{"text_format":"1","workbook":"xlsx","n_sheets":44,"sheets":["Contents","Preface","Gazprom globally","Financial results","Macroeconomic data","Market data","Reserves","Reserves of assoc. and JV","Change in reserves","Discovered fields","License areas","Core licenses","Production","Max daily gas production","Production of the assoc. and JV","Explor. and drill. in Russia","Promising fields","Explor. and production abroad","Explor. projects abroad","Transportation","Gas transportation projects","Gas storage","Gas storage projects","UGSF capacity leased","Refining","Refineries, processing plants","Refining, processing projects","Power and heat generation","Power and heat projects","Sales of gas","Sales of LNG","LNG projects","Gas to end consumers","Gas distribution","Sales of products","Sales of energy","Sales of transp. services","Environmental Protection","Occupational safety","R&D","Personnel","Conventions","Glossary","Financial Ratios"],"not_rendered":{"charts":0,"images":1,"macros":1,"external_links":0,"defined_names":30,"comments":0,"pivot_tables":0},"unopened":[],"bounds":{"document_bytes":16777216,"sheet_cells":100000,"rows_first":2000,"rows_last":500,"rows_between":2000,"halvings":0,"cell_chars":16384,"cell_head_chars":4096},"cells_cut":0,"cells_raw":0,"read":"whole","date_system":"1900"}

{"sheet":"Contents","index":0,"n_rows":139,"n_cols":2,"rows_kept":139,"cut":false,"hidden":false,"merged":[[6,0,6,1]]}
["Свернуть"]
[]
[]
[]
[]
[]
["Gazprom in figures 2019. Factbook."]
[null,"Preface"]
[null,"Gazprom in Russian and Global Energy Industry"]
[null,"Financial Results"]
[null,"Macroeconomic Data"]
[null,"Market Data"]
[null,"Exploration and Production in Russia"]
["+","Reserves"]
[null,"Hydrocarbon reserves of Gazprom Group in Russia"]
[null,"Hydrocarbon fields and deposits discovered by Gazprom Group in Russia"]
[null,"Replacement ratio of Gazprom Group’s hydrocarbon reserves, Russian classification of reserves"]
[null,"Years of Gazprom Group’s hydrocarbon reserves, Russian classification of reserves"]
[null,"Natural gas reserves of Gazprom Group in Russia, PRMS standards"]
[null,"Gas condensate reserves of Gazprom Group in Russia, PRMS standards"]
[null,"Oil reserves of Gazprom Group in Russia, PRMS standards"]
[null,"Hydrocarbon reserves (Russian classification of reserves) of Gazprom Group in Russia"]
[null,"Hydrocarbon reserves (Russian classification of reserves) of the associated and jointly controlled companies \nin Russia"]
[null,"Change in Gazprom Group’s hydrocarbon reserves (Russian classification of reserves) in Russia"]
[null,"Hydrocarbon fields discovered by Gazprom Group in Russia"]
["+","Licenses"]
[null,"License areas in Russian Federation"]
[null,"License areas set out by federal districts of the Russian Federation"]
[null,"Licenses for the main hydrocarbon fields in Russia"]
["+","Production"]
[null,"Hydrocarbon production of Gazprom Group in Russia"]
[null,"Daily average hydrocarbon production of Gazprom Group in Russia"]
[null,"Gazprom Group’s hydrocarbon production in Russia"]
[null,"Hydrocarbon production of Gazprom Group in Russia set out by Federal Districts"]
[null,"Useful life of APG by Gazprom Group in Russia"]
[null,"Actual maximum daily natural and associated gas production in the autumn-winter period"]
[null,"Hydrocarbon production of the associated and jointly controlled companies in Russia"]
["+","Geological Exploration, Production Drilling and Production Capacity"]
[null,"Key figures of Gazprom Group’s geological exploration activities"]
[null,"Key figures of geological exploration activities of entities, investments in which are classified \nas joint operations"]
[null,"Gazprom Group’s production drilling"]
[null,"Production drilling of entities, investments in which are classified as joint operations"]
[null,"Gazprom Group’s production capacity"]
[null,"Production capacity of entities, investments in which are classified as joint operations"]
["+","Promising Fields"]
[null,"Fields under development operated by Gazprom Group"]
[null,"Fields in exploration and prospective licence blocks of Gazprom Group"]
[null,"Fields of joint ventures of Gazprom Group"]
["+","Geological Exploration and Production Abroad"]
[null,"Key figures of Gazprom’s hydrocarbon geological exploration abroad"]
[null,"Gazprom Group’s hydrocarbon production capacity abroad"]
[null,"Gazprom Group oil and gas exploration drilling abroad"]
[null,"Gazprom Group hydrocarbon production abroad"]
[null,"Hydrocarbon production abroad, major projects with Gazprom Group’s participation"]
[null,"Hydrocarbon production of Associates and Joint Ventures in hydrocarbon prospecting, \nexploration and production abroad"]
[null,"Exploration and production projects of Gazprom Group abroad at the prospecting and exploration stage"]
[null,"Exploration and production projects of Gazprom Group abroad at the development and production stage"]
[null,"Prospecting, exploration and production projects of Associates and Joint Ventures abroad"]
["-","Gas Transportation and Underground Storage"]
["+","Gas Transportation"]
[null,"Development and overhaul of the GTS in Russia"]
[null,"Diagnostics of the GTS in Russia"]
[null,"Major technical characteristics of Gazprom Group’s gas transportation assets in Russia"]
[null,"Breakdown of Gazprom Group’s trunk pipelines and pipeline branches by operating life"]
[null,"Gas received into and distributed from Gazprom’s GTS in Russia"]
[null,"Gas transportation volumes of Nord Stream, Blue Stream and Power of Siberia gas pipelines"]
[null,"Gas transportation services provided to PJSC Gazprom in neighbouring countries"]
[null,"Major technical characteristics of gas transportation assets of Gazprom Group’s subsidiaries abroad"]
[null,"Main existing PJSC Gazprom’s export gas transportation routes"]
[null,"Gazprom Group’s major gas transportation projects"]
["+","Underground Gas Storage"]
[null,"Gazprom’s UGSFs in Russia"]
[null,"Gas storage in Russia"]
[null,"Gazprom’s gas injection into and withdrawal from UGSFs abroad"]
[null,"Major projects for the development of underground gas storage in Russia"]
[null,"UGSFs with Gazprom Group participation abroad"]
[null,"European UGSF capacity leased by OOO Gazprom export by the start of the 2019/2020 withdrawal season"]
[null,"Promising UGSFs with Gazprom Group’s participation abroad"]
["+","Hydrocarbon Refining and Processing, Gas Chemical and Petrochemical Business"]
[null,"Volumes of Gazprom Group’s hydrocarbon processing"]
[null,"Liquid hydrocarbon primary processing by Gazprom’s major subsidiaries"]
[null,"Processing of natural and associated gas supplied by non-Group companies at key subsidiaries of PJSC Gazprom"]
[null,"Major types of Gazprom Group’s refined and processed products, and gas chemical and petrochemical products"]
[null,"Areas at utilization of some types of refined oil and gas products produced by Gazprom Group"]
[null,"Refined products produced by major Gazprom Group’s subsidiaries"]
[null,"Hydrocarbon refining/processing, gas chemical and petrochemical plants"]
[null,"Major Gazprom Group’s new hydrocarbon refining and processing, gas chemical and petrochemical projects"]
[null,"Prospective hydrocarbon refining and processing, gas chemical and petrochemical projects \nwhere Gazprom Group participates"]
[null,"Gazprom Group’s projects for transportation of liquid hydrocarbons from the Nadym-Pur-Taz region"]
[null,"Gazprom Group’s capacities to transport liquid hydrocarbons from the Nadym-Pur-Taz region"]
["+","Power and Heat Generation"]
[null,"Electric power and heat generating capacity of Gazprom Group"]
[null,"Electric power and heat generated by Gazprom Group"]
[null,"Investment Projects in Power and Heat"]
[null,"Major projects to create new capacity"]
[null,"Major upgrade and modernization projects"]
["-","Marketing"]
["+","Gas sales"]
[null,"Natural gas sales volumes"]
[null,"Average natural gas price "]
[null,"Gazprom Group’s natural gas sales volumes"]
[null,"Gazprom Group’s natural gas sales volumes to foreign countries"]
[null,"Gazprom’s share in domestic gas demand in Russia"]
[null,"Regulated weighted average wholesale prices for natural gas in Russia"]
[null,"Gazprom Group subsidiaries’ gas sales volumes to end-consumers in far abroad countries"]
[null,"Gazprom Group’s large scale LNG sales volumes to foreign countries"]
[null,"Gazprom Group’s LNG receiving, storage and regasification capacities"]
[null,"Promising large scale LNG projects with Gazprom Group’s participation"]
[null,"Promising small and medium scale LNG projects"]
[null,"Gas distribution and gasification in Russia"]
[null,"Gazprom Group’s gas distribution operations abroad"]
["+","Sales of Crude Oil, Gas Condensate and Refined Products"]
[null,"Oil and gas condensate sales revenue"]
[null,"Gazprom Group’s oil and gas condensate sales volumes"]
[null,"Refined products sales revenue "]
[null,"Gazprom Group’s refined products sales volumes"]
[null,"Gazprom Group’s sales volumes of refined products and petrochemical products"]
[null,"Gazprom Group’s helium sales volumes"]
["+","Sales of Electricity, Heat Energy and Gas Transportation Services"]
[null,"Electricity and heat energy sales revenue"]
[null,"Gas transportation sales revenue "]
[null,"Sales volumes of gas transportation services to companies other than Gazprom Group’s companies"]
["+","Environmental Protection and Energy Saving"]
[null,"Gazprom Group’s environmental performance in Russia"]
[null,"Gazprom Group’s environmental protection costs in Russia"]
[null,"Energy saving of PJSC Gazprom and its major subsidiaries"]
["+","Occupational Safety"]
[null,"Occupational safety at Gazprom Group entities covered by the UOHSMS"]
[null,"Occupational safety at Gazprom Group entities outside the UOHSMS"]
["+","Patent management, R&D"]
[null,"Number of patents held by PJSC Gazprom and its subsidiaries"]
[null,"Total spending on R&D projects commissioned by Gazprom Group"]
["-","Personnel"]
["+","Reference information"]
[null,"Conventions"]
[null,"Conversion Table"]
[null,"Calculation of Adjusted Financial Statement Measures and Financial Ratios"]
[null,"Glossary"]
["+"]

{"sheet":"Preface","index":1,"n_rows":13,"n_cols":1,"rows_kept":13,"cut":false,"hidden":false,"merged":[]}
["Preface"]
["This reference material is based on Gazprom in Figures 2015–2019 Factbook and compiled in a spreadsheet format. "]
["Gazprom in Figures 2015–2019 Factbook contains information and statistics prepared for the annual General Shareholders Meeting of PJSC Gazprom in 2020. The Factbook is based on PJSC Gazprom's corporate reports and information derived from Russian and foreign information publications."]
["Figures in Gazprom Group’s consolidated financial statements prepared in accordance with IFRS (“IFRS consolidated financial statements”) are supplemented with data for 2010–2014, while production and other performance data are supplemented with comparable data from PJSC Gazprom’s Factbooks, Annual Reports, and Management Reports for 2014 and previous periods. "]
["The terms “PJSC Gazprom” and the Company as used in this Factbook refer to the parent company of Gazprom Group, i.e. to Public Joint Stock Company Gazprom (until 17 June 2015 — Open Joint Stock Company Gazprom, JSC Gazprom)."]
["Gazprom Group, the Group and Gazprom should be understood as a set of companies, consisting of PJSC Gazprom and its subsidiaries. For the purposes of this Handbook list of subsidiaries, list of entities, investments in which are classified as joint operations, list of associates and list of joint ventures of Gazprom Group are presented on the basis of the principles of PJSC Gazprom’s consolidated financial reporting statements information disclosure, prepared in accordance with the international financial reporting standards (IFRS). "]
["Similarly, the terms “Gazprom Neft Group” and “Gazprom Neft” refer to PAO Gazprom Neft and its subsidiaries, “Gazprom energoholding” refers to OOO Gazprom energoholding and its subsidiaries, “Gazprom neftekhim Salavat” refers to OOO Gazprom neftekhim Salavat and its subsidiaries."]
["Gazprom's overall results as stated in the Factbook are presented in compliance with the principles for preparing Gazprom Group's consolidated financial statements prepared under IFRS (hereafter, the “IFRS consolidated financial statements”) and/or for the whole of Gazprom Group companies for the purposes of Gazprom Group's IFRS consolidated financial statements. In accordance with IFRS 11 Joint Arrangements, the volumes of hydrocarbon reserves, production and processing of hydrocarbons presented in the Factbook include share in the results of entities where Gazprom has investments classified as joint operations."]
["Some figures of PJSC Gazprom and its subsidiaries were derived from management accounts. Figures calculated using these methods may not be comparable due to differences in methodologies for preparing consolidated financial statements and maintaining management accounts."]
["The Group maintains its management accounts in metric units. Figures representing barrels of oil equivalent (boe) were calculated using the specified conversion ratios."]
["The Group's financial results are derived from Gazprom Group’s IFRS consolidated financial statements. Gazprom Group’s accounting (financial) statements are expressed in Russian rubles. Equivalent amounts in USD and EUR were calculated at the specified exchange rates and do not represent the Group's financial statements data."]
[]
["Back to Contents"]

{"sheet":"Gazprom globally","index":2,"n_rows":19,"n_cols":16,"rows_kept":19,"cut":false,"hidden":false,"merged":[[16,0,16,15],[1,1,1,15],[0,0,0,15],[13,0,13,15],[15,0,15,15],[14,0,14,15]]}
["Gazprom in Russian and Global Energy Industry"]
[null,"As at and for the year ended 31 December"]
[null,2005,2006,2007,2008,2009,2010,2011,2012,2013,2014,2015,2016,2017,2018,2019]
["Share in the world natural gas industry"]
["Reserves*,***",0.16600000000000001,0.16800000000000001,0.16500000000000001,0.18,0.18,0.17599999999999999,0.183,0.183,0.16600000000000001,0.16800000000000001,0.16900000000000001,0.17100000000000001,0.16700000000000001,0.16200000000000001,0.16300000000000001]
["Production*,***",{"$f":"0.185","v":0.185},{"$f":"0.181","v":0.18099999999999999},{"$f":"0.174","v":0.17399999999999999},0.16700000000000001,0.14499999999999999,0.14799999999999999,0.14499999999999999,0.13600000000000001,0.13500000000000001,0.121,0.112,0.112,0.12,0.121,0.11700000000000001]
["Share in the Russian fuel and energy complex"]
["Russian natural gas reserves***",0.60899999999999999,0.624,0.621,0.68899999999999995,0.69799999999999995,0.68700000000000006,0.71799999999999997,0.72,0.72299999999999998,0.72299999999999998,0.71599999999999997,0.71699999999999997,0.71699999999999997,0.71099999999999997,0.71099999999999997]
["Gas production**,***",0.86599999999999999,0.84699999999999998,0.83899999999999997,0.82699999999999996,0.79200000000000004,0.78100000000000003,0.76500000000000001,0.746,0.73099999999999998,0.69299999999999995,0.66,0.65600000000000003,0.68300000000000005,0.68700000000000006,0.67900000000000005]
["Crude oil and gas condensate \nproduction**,***",4.4999999999999998E-2,9.4E-2,9.1999999999999998E-2,8.7999999999999995E-2,8.4000000000000005E-2,8.5999999999999993E-2,8.6999999999999994E-2,0.106,0.109,0.11,0.111,0.115,0.11799999999999999,0.11600000000000001,0.115]
["Primary processing of oil and stable gas condensate**,***",4.9000000000000002E-2,0.14000000000000001,0.14099999999999999,0.14499999999999999,0.155,0.16500000000000001,0.17199999999999999,0.188,0.19400000000000001,0.189,0.185,0.184,0.17699999999999999,0.182,0.182]
["Electric power energy production**,***","–","–",3.1E-2,0.105,0.13900000000000001,0.16900000000000001,0.16900000000000001,0.16200000000000001,0.153,0.14599999999999999,0.14299999999999999,0.14599999999999999,0.14799999999999999,0.14099999999999999,0.13700000000000001]
["Total length of trunk pipelines and pipeline branches operated by gas transportation subsidiaries of Gazprom Group in Russia****, thousand km",155,156.9,158.19999999999999,159.5,160.4,161.69999999999999,164.7,168.3,168.9,170.7,171.2,171.8,172.1,172.6,175.2]
["* Based on International Natural Gas Center CEDIGAZ and PJSC Gazprom figures. Statistics on international production and trade are adjusted to Russian standard terms and conditions using 1.07 ratio."]
["** Based on Federal State Statistics Service, Ministry of Energy of Russia, UES System Operator and PJSC Gazprom figures. "]
["*** Starting from 1 January 2012, the volumes include share in the results of entities where Gazprom has investments classified as joint operations."]
["**** Starting from 1 January 2013, total length of trunk pipelines includes length of technological branches. "]
[]
["Back to Contents"]

{"sheet":"Financial results","index":3,"n_rows":57,"n_cols":11,"rows_kept":57,"cut":false,"hidden":false,"merged":[[2,1,2,10],[0,0,0,10],[1,0,1,10],[54,0,54,10],[52,0,52,10],[53,0,53,10]]}
["Financial Results"]
["Major financial results and ratios of Gazprom Group"]
[null,"As at and for the year ended 31 December"]
[null,2010,2011,2012,2013,2014,2015,2016,2017,2018,2019]
["Statement of comprehensive income figures"]
["Sales, RUB mm",3597054,4637090,4766495,5249965,5589811,6073318,6111051,6546143,8224177,7659623]
["Operating expenses, RUB mm",2440777,2942181,3421847,3600908,4128330,4762444,5280876,5697056,6181191,6387071]
["Operating profit, RUB mm",1113822,1656843,1350677,1587209,1309509,1237422,726639,871405,1930030,1119857]
["Adjusted EBITDA, RUB mm",1363778,1930533,1645921,2009475,1961643,1883847,1323258,1467692,2599284,1859679]
["Profit for the year, RUB mm",997993,1342442,1252415,1165705,157192,805199,997104,766879,1528996,1269517]
["Profit for the year attributable to owners of PJSC Gazprom, RUB mm",968557,1307018,1224474,1139261,159004,787056,951637,714302,1456270,1202887]
["Basic and diluted earnings per share for profit attributable to the owners of PJSC Gazprom, RUB",42.2,56.95,53.35,49.64,6.93,34.29,42.19,32.32,65.89,53.47]
["Balance sheet figures"]
["Total assets, RUB mm",9235993,10900696,11956836,13436236,15177470,17052040,16918938,18238770,20810440,21882348]
["Current assets, RUB mm",1865895,2240293,2420803,2862670,3461155,3993722,3234346,3469266,4212230,3828153]
["Inventories, RUB mm",325739,407530,462746,569724,671916,804364,711199,772314,909677,946361]
["Current liabilities, RUB mm",1011261,1309255,1492066,1391465,1855947,2124701,1921808,2589516,2473695,2527476]
["Total debt, RUB mm",1315447,1536819,1500592,1801928,2688824,3442215,2829623,3266518,3863822,3863904]
["Net debt, RUB mm",870993,1028176,"1 071 214",1112798,1650633,2083120,1932895,2397511,3014403,3167847]
["Equity, excluding non-controlling interest, RUB mm",6249751,7463571,8170733,9319590,9816558,10589586,11094531,11629086,13300009,14104833]
["Equity, including non-controlling interest, RUB mm",6536361,7760991,8479945,9634354,10120021,10914622,11441839,12015481,13776153,14615687]
["Capital expenditures*, RUB mm",920133,1351590,1233210,1213850,1221328,1349635,1357336,1504600,1795884,1818677]
["Statement of cash flows figures"]
["Cash flows from operating activities, \nRUB mm",1460116,1637450,1472779,1741804,1915769,2030927,1571323,1187022,1617384,1709384]
["Capital expenditures, RUB mm",-1042642,-1553118,-1349114,-1397195,-1262140,-1641024,-1369052,-1405780,-1639474,-1775923]
["Cash flows used in investing activities, \nRUB mm",-1050307,-1605245,-1287216,-1466512,-1441305,-1664156,-1445965,-1368131,-1617718,-1938109]
["Cash flows (used in) from \nfinancing activities, RUB mm",-212384,31814,-253870,-33262,-262587,-138305,-460479,149944,-96070,152375]
["Cash and cash equivalents as at the end of the reporting year, RUB mm",440786,501344,425720,689130,1038191,1359095,896728,869007,849419,696057]
["Self-financing ratio",1.4,1.05,1.0900000000000001,1.25,1.52,1.24,1.1499999999999999,0.84,0.99,0.96]
["Adjusted financial statement measures**"]
["Profit for the year attributable to owners of PJSC Gazprom (adjusted), RUB mm",null,null,null,null,null,1329369,609184,651670,1678319,994309]
["Net debt (adjusted), RUB mm",null,null,null,null,null,1951528,1746630,2067983,2216831,2491425]
["Return ratios***"]
["Return on operating profit",0.31,0.36,0.28000000000000003,0.3,0.23,0.2,0.12,0.13,0.23,0.15]
["Return on adjusted EBITDA",0.38,0.42,0.35,0.38,0.35,0.31,0.22,0.22,0.32,0.24]
["Return on profit for the year",0.28000000000000003,0.28999999999999998,0.26,0.22,0.03,0.13,0.16,0.12,0.19,0.17]
["Return on assets (ROA)",0.1133791711799486,0.13,0.11,0.09,0.01,0.05,0.06,0.04,0.08,0.06]
["Return on equity (ROE)",0.16379764382494144,0.19,0.15,0.13,0.02,0.08,0.09,7.0000000000000007E-2,0.12,0.09]
["Ratios of total and net debt"]
["Total debt / equity and non-controlling interest ",0.2,0.2,0.18,0.19,0.27,0.32,0.25,0.27,0.28000000000000003,0.26]
["Total debt / total debt, equity and non-controlling interest",0.17,0.17,0.15,0.16,0.21,0.24,0.2,0.21,0.22,0.21]
["Total debt / total assets",0.14000000000000001,0.14000000000000001,0.13,0.13,0.18,0.2,0.17,0.18,0.19,0.18]
["Total debt / adjusted EBITDA",0.96,0.8,0.91,0.9,1.37,1.83,2.14,2.23,1.49,2.08]
["Net debt / adjusted EBITDA",0.64,0.54,0.65,0.55000000000000004,0.84,1.1100000000000001,1.46,1.63,1.1599999999999999,1.7]
["Net debt (adjusted) / adjusted EBITDA",null,null,null,null,null,null,null,null,null,1.34]
["Liquidity ratios***"]
["Current liquidity ratio",1.85,1.71,1.62,2.06,1.86,1.88,1.68,1.34,1.7,1.51]
["Quick liquidity ratio",1.523005435787596,1.4,1.31,1.65,1.5,1.5,1.31,1.04,1.34,1.1399999999999999]
["Other ratios***"]
["EV / EBITDA",3.999667517512381,2.6,2.7,2.2000000000000002,2.4,2.8,4.2,3.7,2.6,5]
["P / E",4.5881516587677726,3,2.7,2.8,18.8,4,3.6,4,2.2999999999999998,4.8]
["P / S",1.2742832239098996,0.9,0.7,0.6,0.6,0.5,0.6,0.5,0.4,0.8]
["* Capital expenditures are derived from Segment Information in PJSC Gazprom’s IFRS consolidated financial statements."]
["** These measures do not appear in the financial statements. Calculated in accordance with the Dividend Policy of PJSC Gazprom approved by PJSC Gazprom’s Board of Directors in 2019 (Resolution of PJSC Gazprom’s Board of Directors No. 3363 dated 24 December 2019). For calculation formulas, see the Calculation of \nAdjusted Financial Statement Measures and Financial Ratios section."]
["*** Calculation is provided in the Calculation of Financial Ratios section."]
[]
["Back to Contents"]

{"sheet":"Macroeconomic data","index":4,"n_rows":17,"n_cols":17,"rows_kept":17,"cut":false,"hidden":false,"merged":[[0,0,0,12],[1,0,2,0],[1,1,2,1],[14,0,14,12],[1,2,1,16],[13,0,13,16]]}
["Macroeconomic Data"]
["Indicator*","Measure","As at and for the year ended 31 December"]
[null,null,2005,2006,2007,2008,2009,2010,2011,2012,2013,2014,2015,2016,2017,2018,2019]
["Consumer price index","%",0.109,0.09,0.11899999999999999,0.13300000000000001,8.7999999999999995E-2,8.7999999999999995E-2,6.0999999999999999E-2,6.6000000000000003E-2,6.5000000000000002E-2,0.114,0.129,5.3999999999999999E-2,2.5000000000000001E-2,4.2999999999999997E-2,0.03]
["Producer price index","%",0.13400000000000001,0.104,0.251,-7.0000000000000007E-2,0.13900000000000001,0.16700000000000001,0.12,5.0999999999999997E-2,3.6999999999999998E-2,5.8999999999999997E-2,0.107,7.3999999999999996E-2,8.4000000000000005E-2,0.11700000000000001,-4.2999999999999997E-2]
["Average RUB/USD currency exchange rate \nfor the period","RUB/USD",28.32,27.14,25.55,24.87,31.75,30.38,29.39,31.08,31.9,38.6,61.32,66.83,58.31,62.9,64.64]
["RUB/USD currency exchange rate \nat the end of the period","RUB/USD",28.78,26.33,24.55,29.38,30.24,30.36,32.200000000000003,30.37,"32, 73",56.26,72.88,60.66,57.6,69.47,61.91]
["Average RUB/EUR currency exchange rate \nfor the period","RUB/EUR",35.15,34.11,35.03,36.450000000000003,44.19,40.21,40.9,39.92,42.39,50.99,67.989999999999995,73.989999999999995,66.02,74.11,72.349999999999994]
["RUB/EUR currency exchange rate \nat the end of the period","RUB/EUR",34.19,34.700000000000003,35.93,41.44,43.39,39.9,41.67,40.229999999999997,44.97,68.34,79.7,63.81,68.87,79.459999999999994,69.34]
["Brent oil price (Dated)**","USD/barrel",58.21,58.93,96.02,36.549999999999997,77.67,92.54,106.51,109.99,110.28,"55,98 ",35.74,54.94,66.540000000000006,50.21,66.77]
["Urals oil price (average CIF MED/RDAM)**","USD/barrel",53.61,55.26,93.09,35.89,77,90.27,104.29,108.09,109.1,"53,40 ",33.11,53.27,66.19,51.18,62.38]
["Brent average annual oil price (Dated)**","USD/barrel",54.52,65.14,72.39,97.28,61.67,79.5,111.26,111.67,108.66,"98,95 ",52.39,43.73,54.19,71.31,64.209999999999994]
["Urals (average CIF MED/RDAM) average annual oil price**","USD/barrel",50.59,61.28,69.28,94.82,61.18,78.28,109.1,110.37,107.71,"96,94 ",51.42,42.1,53.06,70.05,63.37]
["* Economic indicators and exchange rates based on the data provided by Central Bank of Russia and the Federal State Statistics Service. The average exchange rates calculated based on the working days exchange rates provided by \nCentral Bank of Russia."]
["** Source: Platts."]
[]
["Back to Contents"]

{"sheet":"Market data","index":5,"n_rows":38,"n_cols":17,"rows_kept":38,"cut":false,"hidden":false,"merged":[[32,0,32,16],[31,0,31,16],[35,0,35,16],[1,0,2,0],[1,1,2,1],[1,2,1,16],[34,0,34,16],[33,0,33,16]]}
["Market Data"]
["Indicator","Measure","As at and for the year ended 31 December"]
[null,null,2005,2006,2007,2008,2009,2010,2011,2012,2013,2014,2015,2016,2017,2018,2019]
["Price per share on Moscow Exchange"]
["as at the end of the year","RUB",194.3,302.89,342.88,108.6,183.21,193.62,171.37,143.91,138.75,"130,31 ",136.09,154.55000000000001,130.5,153.5,256.39999999999998]
["minimum","RUB",69.599999999999994,216,227.99,86.6,101.91,142.84,143.03,137.18,107.17,"117,87 ",130.9,124.6,115.35,132.19999999999999,149.49]
["maximum","RUB",195,350.25,357.2,367.4,200.16,197.34,243.93,199.69,158,"153,25 ",163,168.47,157.97,172.11,270.74]
["Price per ADR* on London Stock Exchange"]
["as at the end of the year","USD",28.68,46,56.7,14.25,25.5,25.25,10.66,9.4600000000000009,8.5500000000000007,"4,65 ",3.69,5.05,4.41,4.43,8.23]
["minimum","USD",11.92,29.48,35.4,11.91,12.26,18.059999999999999,8.74,8.6999999999999993,6.48,"3,73 ",3.62,3.02,3.85,4.1399999999999997,4.47]
["maximum","USD",31.4,52.64,58.5,62.5,27.3,26.64,17.399999999999999,13.53,9.82,"9,06 ",6.24,5.27,5.27,5.31,8.35]
["Number of PJSC Gazprom’s ordinary shares issued, as at the end of the year","mm shares",23674,23674,23674,23674,23674,23674,23674,23674,23674,"23 674 ","23 674 ",23673.512900000002,23673.512900000002,23673.512900000002,23674]
["Number of ordinary shares held by the subsidiaries of PJSC Gazprom, \nas at the end of the year","mm shares",848,749,66,30,724,723,726,724,"723 ","723 ",723,1573,1573,1573,29]
["Number of ordinary shares issued less shares held by the subsidiaries of PJSC Gazprom, \nas at the end of the year**","mm shares",{"$f":"C12-C13","v":22826},22925,23608,23644,22950,22951,22948,22950,"22 951 ","22 951 ","22 951 ",22101,22101,22101,23645]
["Market capitalization \nas at the end of the year***","USD bn ",160.30000000000001,272,330.9,86,144.5,150.9,122.6,111.6,99.9,"54,8 ",44.2,60.3,53.6,52.3,98]
["change (y-o-y) ","%",1.4179999999999999,{"$f":"ROUND((D15-C15)/C15,3)","v":0.69699999999999995},0.217,-0.74,0.68,4.3999999999999997E-2,-0.188,-0.09,-0.105,-0.45100000000000001,-0.193,0.36399999999999999,-0.111,-2.4E-2,0.875]
["MOEX Russia index","points",1011,1693,1889,620,1370,1688,1402,1475,1504," 1 397 ",1761,2233,2110,2369,3046]
["change (y-o-y) ","%",0.83199999999999996,{"$f":"ROUND((D17-C17)/C17,3)","v":0.67500000000000004},0.11600000000000001,-0.67200000000000004,1.21,0.23200000000000001,-0.16900000000000001,5.1999999999999998E-2,0.02,-7.0999999999999994E-2,0.26100000000000001,0.26800000000000002,-5.5E-2,0.123,0.28599999999999998]
["RTS index","points",1126,1922,2291,632,1445,1770,1382,1527,1443,"791 ",757,1152,1154,1069,1549]
["change (y-o-y) ","%",0.85799999999999998,{"$f":"ROUND((D19-C19)/C19,3)","v":0.70699999999999996},0.192,-0.72399999999999998,1.286,0.22500000000000001,-0.219,0.105,-5.5E-2,-0.45200000000000001,-4.2999999999999997E-2,0.52200000000000002,2E-3,-7.3999999999999996E-2,0.44900000000000001]
["Daily average trading volume, \nMoscow Exchange","mm shares",20.8,49.2,47.8,67.2,85.2,56.4,74.599999999999994,39.4,43.9,"52,5 ",32.5,29.9,28.9,26.3,37]
["Daily average trading volume, \nLondon Stock Exchange","mm ADRs",1.7,4.4000000000000004,7.2,16.899999999999999,12.6,13.7,43.2,32.1,25,"27,6 ",16.399999999999999,15.9,12,9.1999999999999993,8.1]
["Dividend per share****","RUB",1.5,2.54,2.66,0.36,2.39,3.85,8.9700000000000006,5.99,7.2,"7,20 ",7.89,8.0396999999999998,8.0399999999999991,16.61,15.24]
["Share capital structure"]
["Shareholding controlled \nby the Russian Federation"]
["Federal Agency \nfor State Property Management","%",0.38373000000000002,0.38373000000000002,0.38373000000000002,0.38373000000000002,0.38373000000000002,0.38373000000000002,0.38369999999999999,0.38369999999999999,0.38369999999999999,0.38369999999999999,0.38369999999999999,0.38369999999999999,0.38369999999999999,0.38369999999999999,0.38369999999999999]
["AO ROSNEFTEGAZ","%",0.1074,0.1074,0.1074,0.1074,0.1074,0.1074,0.1074,0.1074,0.10970000000000001,0.10970000000000001,0.10970000000000001,0.10970000000000001,0.10970000000000001,0.10970000000000001,0.10970000000000001]
["AO Rosgazifikatsiya","%",8.8900000000000003E-3,8.8900000000000003E-3,8.8900000000000003E-3,8.8900000000000003E-3,8.8900000000000003E-3,8.8900000000000003E-3,8.8999999999999999E-3,8.8999999999999999E-3,8.8999999999999999E-3,8.8999999999999999E-3,8.8999999999999999E-3,8.8999999999999999E-3,8.8999999999999999E-3,8.8999999999999999E-3,8.8999999999999999E-3]
["ADR holders*****","%",4.4220000000000002E-2,0.13200000000000001,0.2102,0.2215,0.24349999999999999,0.2757,0.28349999999999997,0.26960000000000001,0.25779999999999997,0.28050000000000003,0.27829999999999999,0.26860000000000001,0.252,0.24129999999999999,0.19700000000000001]
["Other registered holders","%",0.45576,0.36797999999999997,0.28977999999999998,0.27848000000000001,0.25647999999999999,0.22428000000000001,0.2165,0.23039999999999999,0.2399,0.2172,0.21940000000000001,0.2291,0.2457,0.25640000000000002,0.30070000000000002]
["Total","%",{"$f":"SUM(C26:C30)","v":1},1,1,1,1,1,1,1,1,1,1,1,1,1,1]
["* Before April 2011 1 ADR provided a right for 4 ordinary shares of OAO Gazprom. Since April 2011 onwards 1 ADR provides a right for 2 ordinary shares of OAO Gazprom (after 17 July 2015 — PJSC Gazprom)."]
["** As at 31 December of the respective year, there were no ordinary shares of PJSC Gazprom which belong to the Company. "]
["*** Market capitalization based on Moscow Exchange share price converted into USD."]
["**** For 2019 — recommended dividends."]
["***** The Bank of New York Mellon issued ADRs on PJSC Gazprom’s shares."]
[]
["Back to Contents"]

{"sheet":"Reserves","index":6,"n_rows":196,"n_cols":16,"rows_kept":196,"cut":false,"hidden":false,"merged":[[193,0,193,15],[84,1,84,15],[118,1,118,15],[137,1,137,15],[163,1,163,15],[135,0,135,9],[136,0,136,9],[161,0,161,9],[162,0,162,9],[192,0,192,15],[133,0,133,15],[159,0,159,15],[54,1,54,15],[114,0,114,15],[132,0,132,15],[64,0,64,9],[65,0,65,9],[74,0,74,9],[75,0,75,9],[82,0,82,9],[83,0,83,9],[116,0,116,9],[117,0,117,9],[80,0,80,15],[66,1,66,15],[76,7,76,15],[72,0,72,15],[0,0,0,9],[1,0,1,9],[2,0,2,9],[3,0,3,9],[53,0,53,12],[5,1,5,15],[28,1,28,15],[51,0,51,15],[25,0,25,15],[50,0,50,15]]}
["Exploration and Production in Russia"]
["Reserves"]
["Hydrocarbon reserves of Gazprom Group in Russia"]
["(including share in the reserves of entities, investments in which are classified as joint operations)"]
["Metric units"]
[null,"As at 31 December"]
[null,"2005*","2006*","2007*","2008*","2009*","2010*","2011*",2012,2013,2014,2015,2016,2017,2018,2019]
["Natural gas, bcm"]
["Reserves, Russian classification",29130.7,29854.2,29785.4,33123.199999999997,33578.400000000001,33052.300000000003,35046.9,35169.800000000003,35696.6,36101.4,36147.300000000003,36443.9,35355.4,35195.300000000003,34899]
["share audited under PRMS standards",0.95,0.93,0.95,0.88,0.89,0.93,0.9,0.94,0.93,0.94,0.94,0.95,0.94,0.93,0.93]
["Proved ",16052.1,18187.599999999999,18286.5,18187.8,18609.900000000001,18991.3,19212.599999999999,19133,18939.3,18894.7,18791.2,18596.5,18253.400000000001,17890.400000000001,17715.099999999999]
["Probable ",4757.2,2580,2551.5,3088.2,3338.1,3529,3631.5,4254.1000000000004,4325.2,4616,4913.8,5258.6,5893.2,6364.7,6680.4]
["Proved + probable",20809.3,20767.599999999999,20838,21276,21948,22520.3,22844.1,23387.1,23264.5,23510.7,23705,23855.1,24146.6,24255.1,24395.5]
["Gas condensate, mm tonnes"]
["Reserves, Russian classification",1216.3,1217,1212.5,1287.0999999999999,1325.1,1284.8,1395.5,1386.1,1384.4,1447,1499.5,1534.9,1595.6,1604.4,1569.7]
["share audited under PRMS standards",0.9,0.9,0.9,0.85,0.82,0.86,0.83,0.89,0.89,0.92,0.92,0.94,0.93,0.94,0.95]
["Proved ",507.9,528.9,568.9,587.9,586,572.1,605.20000000000005,633.79999999999995,638.79999999999995,642.29999999999995,699.5,759.2,797.7,759.7,730.2]
["Probable ",184.7,130.1,117.2,141.9,141.19999999999999,147.19999999999999,152.6,174.9,193.6,206.3,233.8,259.7,308,330.5,333]
["Proved + probable",692.6,659,686.1,729.8,727.2,719.3,757.8,808.7,832.4,848.6,933.3,1018.9,1105.7,1090.2,1063.2]
["Crude oil, mm tonnes"]
["Reserves, Russian classification",1357.5,1386.9,1509.9,1601.7,1785,1732.9,1767.3,1992.2,2019,2053.1,2082,2078.5,2045.3,2015.7,2005.7]
["share audited under PRMS standards",0.93,0.93,0.93,0.92,0.85,0.9,0.89,0.89,0.89,0.91,0.92,0.93,0.94,0.94,0.96]
["Proved ",528.79999999999995,688.9,727,713.2,718.5,717.4,723.9,819.5,834.8,830.5,792.7,789.5,736.8,712.3,707.5]
["Probable ",702.9,377.6,405.5,565,435.5,464.5,492.2,588.79999999999995,572.4,543.9,562.70000000000005,589.20000000000005,623.20000000000005,623.1,667.3]
["Proved + probable",1231.7,1066.5,1132.5,1278.2,1154,1181.9000000000001,1216.0999999999999,1408.3,1407.2,1374.4,1355.4,1378.7,1360,1335.4,1374.8]
["* Excluding share of Gazprom Group in the reserves of entities, investments in which are classified as joint operations."]
[]
["Oil equivalent"]
[null,"As at 31 December"]
[null,"2005*","2006*","2007*","2008*","2009*","2010*","2011*",2012,2013,2014,2015,2016,2017,2018,2019]
["Natural gas, mm boe"]
["Reserves, Russian classification",{"$f":"B9*6.49","v":189058.24300000002},193753.758,193307.24600000001,214969.568,217923.81600000002,214509.42700000003,227454.38100000002,228252,231670.9,234298.1,234596,236520.9,229456.5,228417.5,226494.5]
["Proved ",104178.2,{"$f":"C11*6.49","v":118037.52399999999},118679.38500000001,118038.822,120778.2,123253.537,124689.77399999999,124173.2,122916.1,122626.6,121954.9,120691.3,118464.5,116108.7,114971]
["Probable ",{"$f":"B12*6.49","v":30874.227999999999},16744.2,16559.235000000001,20042.417999999998,21664.269,22903.21,23568.435000000001,27609.1,28070.5,29957.8,31890.6,34128.300000000003,38246.9,41306.9,43355.8]
["Proved + probable",{"$f":"B13*6.49","v":135052.35699999999},{"$f":"C13*6.49","v":134781.72399999999},135238.62,138081.24,142442.52000000002,146156.747,148258.209,151782.29999999999,150986.6,152584.4,153845.5,154819.6,156711.4,157415.6,158326.79999999999]
["Gas condensate, mm boe"]
["Reserves, Russian classification",9949.2999999999993,9955.1,9918.2999999999993,10528.5,10839.3,10509.7,11415.2,11338.3,11324.4,11836.5,12265.9,12555.5,13052,13124,12840.1]
["Proved ",4154.6000000000004,4326.3999999999996,4653.6000000000004,4809,4793.5,4679.8,4950.5,5184.5,5225.3999999999996,5254,5721.9,6210.3,6525.2,6214.3,5973]
["Probable ",1510.8999999999999,1064.2,958.7,1160.8,1155,1204.0999999999999,1248.3,1430.7,1583.6,1687.5,1912.5,2124.3000000000002,2519.4,2703.5,2723.9]
["Proved + probable",5665.5,5390.6,5612.3,5969.8,5948.5,5883.9,6198.8,6615.2,6809,6941.5,7634.4,8334.6,9044.6,8917.7999999999993,8696.9]
["Crude oil, mm boe"]
["Reserves, Russian classification",9950.5,10166,11067.6,11740.5,13084.1,12702.2,12954.3,14602.8,14799.3,15049.2,15261.1,15235.4,14992.1,14775.1,14701.8]
["Proved ",3876.1,5049.6000000000004,5328.9,5227.8,5266.6,5258.5,5306.2,6006.9,6119.1,6087.6,5810.5,5787,5400.7,5221.2,5186]
["Probable ",5152.3,2767.8,2972.3,4141.3999999999996,3192.2,3404.8,3607.8,4315.8999999999996,4195.7,3986.8,4124.6000000000004,4318.8,4568.1000000000004,4567.3,4891.3]
["Proved + probable",9028.4,7817.4,8301.2000000000007,9369.2000000000007,8458.7999999999993,8663.2999999999993,8914,10322.799999999999,10314.799999999999,10074.4,9935.1,10105.9,9968.7999999999993,9788.5,10077.299999999999]
["Total, mm boe"]
["Reserves, Russian classification",{"$f":"B32+B37+B42","v":208958.04300000001},213874.85800000001,214293.14600000001,237238.568,241847.21600000001,237721.32700000005,251823.88100000002,254193.1,257794.6,261183.8,262123,264311.8,"257 500,6",256316.6,254036.4]
["Proved ",{"$f":"B33+B38+B43","v":112208.90000000001},127413.52399999999,128661.88500000001,128075.622,130838.3,133191.837,134946.47399999999,135364.6,134260.6,133968.20000000001,133487.29999999999,132688.6,"130 390,4",127544.2,126130]
["Probable ",{"$f":"B34+B39+B44","v":37537.428},20576.2,20490.235000000001,25344.617999999995,26011.469000000001,27512.109999999997,28424.535,33355.699999999997,33849.800000000003,35632.1,37927.699999999997,40571.5,"45 334,4",48577.7,50971]
["Proved + probable",{"$f":"B35+B40+B45","v":149746.25699999998},147989.72399999999,149152.12,153420.24,156849.82,160703.94699999999,163371.00899999999,168720.3,168110.4,169600.3,171415,173260.1,"175 724,8",176121.9,177101]
["* Excluding share of Gazprom Group in the reserves of entities, investments in which are classified as joint operations."]
["Note. For management accounting purposes, Gazprom Group measures hydrocarbon reserves and production in metric units. In this Factbook, gas reserves are converted from metric units to barrels of oil equivalent \nat a ratio of 1,000 cubic metres to 6.49 boe."]
[]
["Hydrocarbon fields and deposits discovered by Gazprom Group in Russia"]
[null,"For the year ended 31 December"]
[null,"2005*",2006,2007,2008,2009,2010,2011,2012,2013,2014,2015,2016,2017,2018,2019]
["Gazprom Group"]
["Fields",3,4,3,3,7,3,5,5,2,1,2,2,4,3,4]
["Deposits in previously discovered fields",14,30,24,22,14,26,28,49,27,37,22,15,47,12,25]
["Entities in which Gazprom has investments\nclassified as joint operations"]
["Fields","x","x","x","x","x","x","x","–","–","–","–","–",1,1,1]
["Deposits in previously discovered fields","x","x","x","x","x","x","x",2,1,2,6,3,5,3,2]
["* Excluding Gazprom Neft Group."]
[]
["Replacement ratio of Gazprom Group’s hydrocarbon reserves, Russian classification of reserves"]
["(including share in the reserves of entities, investments in which are classified as joint operations)"]
[null,"For the year ended 31 December"]
[null,"2005*","2006*","2007*","2008*","2009*","2010*","2011*","2012*",2013,2014,2015,2016,2017,2018,2019]
["Natural gas",1,1.1000000000000001,1.1000000000000001,1.1000000000000001,1,1.1000000000000001,1.4,1.18,1.33,1.86,1.27,1.1000000000000001,1.82,1.6,1.1100000000000001]
["Gas condensate",1.82,1.42,1.18,0.86,5.28,3.99,4.41,2.31,0.52,10.88,6.12,3.25,7.97,1.74,0.88]
["Crude oil",0.51,1.38,0.59,1.69,1.83,2.6,1.78,1.67,1.1399999999999999,0.56999999999999995,0.47,0.41,7.0000000000000007E-2,0.41,0.61]
["Total",1.02,1.0900000000000001,1.04,1.1000000000000001,1.1499999999999999,1.24,1.49,1.24,1.29,1.95,1.32,1.08,1.81,1.49,1.06]
["* Excluding share of Gazprom Group in the reserves of entities, investments in which are classified as joint operations."]
[]
["Years of Gazprom Group’s hydrocarbon reserves, Russian classification of reserves"]
["(including share in the reserves of entities, investments in which are classified as joint operations)"]
[null,null,null,null,null,null,null,"As at 31 December"]
[null,null,null,null,null,null,null,"2011*","2012*",2013,2014,2015,2016,2017,2018,2019]
["Natural gas",null,null,null,null,null,null,69,73,73,82,87,87,75,71,70]
["Crude oil",null,null,null,null,null,null,54,54,48,47,47,44,43,43,42]
["* Excluding share of Gazprom Group in the reserves of entities, investments in which are classified as joint operations."]
[]
["Natural gas reserves of Gazprom Group in Russia, PRMS standards, bcm"]
["(including share in the reserves of entities, investments in which are classified as joint operations)"]
[null,"As at 31 December"]
[null,"2005*","2006*","2007*","2008*","2009*","2010*","2011*",2012,2013,2014,2015,2016,2017,2018,2019]
["PJSC Gazprom and \nits major subsidiaries"]
["Proved",15714.7,17902.5,17319.5,17196.8,17645.5,18029.400000000001,18208.099999999999,18133.7,18036.7,18023.7,17942.5,17780.900000000001,"17 429,6",17075.8,16831.400000000001]
["Probable",{"$f":"IF(4672<>B90-B88,B90-B88,4672)","v":4671.8999999999978},2572.4,2539.4,2908.8,3255.2,3420.6,3505.7,4068.2,4072.4,4303.7,4587.6000000000004,4930.2,"5 536,8",6007.5,6290.7]
["Proved + probable",20386.599999999999,20474.900000000001,19858.900000000001,20105.599999999999,20900.7,21450,21713.8,22201.9,22109.1,22327.4,22530.1,22711.1,"22 966,4",23083.3,23122.1]
["PAO Gazprom Neft and its subsidiaries"]
["Proved",66.8,29.5,20.6,73.2,80.7,118.9,147.19999999999999,193.8,216.7,223.5,239.5,243,288.2,322.3,389.1]
["Probable",81.3,3.6,1.8,169.1,72.599999999999994,98.1,106.4,133.1,111.3,168.3,182.1,183,210.5,212.2,259.5]
["Proved + probable",148.1,33.1,22.4,242.3,153.30000000000001,217,253.6,326.89999999999998,328,391.8,421.6,426,498.7,534.5,648.6]
["ZAO Purgaz"]
["Proved",270.60000000000002,255.6,233.1,217.9,206.4,191.3,188,172.9,158.30000000000001,145,132.30000000000001,120.6,109.7,92,83.2]
["Probable",4,4,3.9,3.9,3.9,3.9,12.8,12.9,12.9,12.9,12.9,12.9,12.9,12.7,12.8]
["Proved + probable",274.60000000000002,259.60000000000002,237,221.8,210.3,195.2,200.8,185.8,171.2,157.9,145.19999999999999,133.5,122.6,104.7,96]
["OAO Severneftegazprom"]
["Proved","x","x",713.3,699.9,677.3,651.70000000000005,669.3,613.70000000000005,510,484.9,459.8,434.6,409.9,384.8,397.1]
["Probable","x","x",6.4,6.4,6.4,6.4,6.6,36.799999999999997,125.7,125.7,125.7,125.7,125.5,125.4,110.5]
["Proved + probable","x","x",719.7,706.3,683.7,658.1,675.9,650.5,635.70000000000005,610.6,585.5,560.29999999999995,535.4,510.2,507.6]
["Total (excluding share in the reserves of entities, investments in which are classified as joint operations)"]
["Proved",16052.1,18187.599999999999,18286.5,18187.8,18609.900000000001,18991.3,19212.599999999999,19114.099999999999,18921.7,18877.099999999999,18774.099999999999,18579.099999999999,"18 237,4",17874.900000000001,17700.8]
["Probable",4757.2,2580,2551.5,3088.2,3338.1,3529,3631.5,4251,4322.3,4610.6000000000004,4908.3,5251.8,"5 885,7",6357.8,6673.5]
["Proved + probable",20809.3,20767.599999999999,20838,21276,21948,22520.3,22844.1,23365.1,23244,23487.7,23682.400000000001,23830.9,24123.1,24232.7,24374.3]
["Entities, investments in which are classified as joint operations (attributable to the share of \nGazprom Group)"]
["Proved","x","x","x","x","x","x","x",18.899999999999999,17.600000000000001,17.600000000000001,17.100000000000001,17.399999999999999,16,15.5,14.3]
["Probable","x","x","x","x","x","x","x",3.1,2.9,5.4,5.5,6.8,7.5,6.9,6.9]
["Proved + probable","x","x","x","x","x","x","x",22,20.5,23,22.6,24.2,23.5,22.4,21.2]
["Total (including share in the reserves of entities, investments in which are classified as joint operations)"]
["Proved","x","x","x","x","x","x","x",19133,18939.3,18894.7,18791.2,18596.5,"18 253,4",17890.400000000001,17715.099999999999]
["Probable","x","x","x","x","x","x","x",4254.1000000000004,4325.2,4616,4913.8,5258.6,"5 893,2",6364.7,6680.4]
["Proved + probable","x","x","x","x","x","x","x",23387.1,23264.5,23510.7,23705,23855.1,"24 146,6",24255.1,24395.5]
["* Excluding share of Gazprom Group in the reserves of entities, investments in which are classified as joint operations."]
[]
["Gas condensate reserves of Gazprom Group in Russia, PRMS standards, mm tonnes"]
["(including share in the reserves of entities, investments in which are classified as joint operations)"]
[null,"As at 31 December"]
[null,"2005*","2006*","2007*","2008*","2009*","2010*","2011*",2012,2013,2014,2015,2016,2017,2018,2019]
["PJSC Gazprom and \nits major subsidiaries"]
["Proved",507.9,528.9,568.9,587.9,586,572.1,605.20000000000005,633.79999999999995,634.4,637.29999999999995,691.9,751.7,788.9,748.5,719.1]
["Probable",184.7,130.1,117.2,141.9,141.19999999999999,147.19999999999999,152.6,174.9,190.3,202.8,230.2,257,303.5,327.2,329.7]
["Proved + probable",692.6,659,686.1,729.8,727.2,719.3,757.8,808.7,824.7,840.1,922.1,1008.7,"1 092,4",1075.7,1048.8]
["PAO Gazprom Neft and its subsidiaries"]
["Proved**","x","x","x","x","x","x","x","x",4.4000000000000004,5,7.6,7.5,8.8000000000000007,11.2,11.1]
["Probable**","x","x","x","x","x","x","x","x",3.3,3.5,3.6,2.7,4.5,3.3,3.3]
["Proved + probable**","x","x","x","x","x","x","x","x",7.7,8.5,11.2,10.199999999999999,13.3,14.5,14.4]
["Total"]
["Proved",507.9,528.9,568.9,587.9,586,572.1,605.20000000000005,633.79999999999995,638.79999999999995,642.29999999999995,699.5,759.2,797.7,759.7,730.2]
["Probable",184.7,130.1,117.2,141.9,141.19999999999999,147.19999999999999,152.6,174.9,193.6,206.3,233.8,259.7,308,330.5,333]
["Proved + probable",692.6,659,686.1,729.8,727.2,719.3,757.8,808.7,832.4,848.6,933.3,"1 018,9","1 105,7",1090.2,1063.2]
["* Excluding share of Gazprom Group in the reserves of entities, investments in which are classified as joint operations."]
["** For reserves prior to 31 December 2013, gas condensate reserves of Gazprom Neft Group were included in oil reserves."]
[]
["Oil reserves of Gazprom Group in Russia, PRMS standards, mm tonnes"]
["(including share in the reserves of entities, investments in which are classified as joint operations)"]
[null,"As at 31 December"]
[null,"2005*","2006*","2007*","2008*","2009*","2010*","2011*",2012,2013,2014,2015,2016,2017,2018,2019]
["PJSC Gazprom and \nits major subsidiaries"]
["Proved",67.3,87.1,76.900000000000006,97.6,93,82.9,57.3,58.9,55.5,55.6,44.7,44.6,16.5,17.2,22]
["Probable",232.2,203.8,210,185.7,159.80000000000001,179.1,171.2,105,121,45.9,35,35,46.5,46.7,58.1]
["Proved + probable",299.5,290.89999999999998,286.89999999999998,283.3,252.8,262,228.5,163.9,176.5,101.5,79.7,79.599999999999994,63,63.9,80.099999999999994]
["PAO Gazprom Neft and its subsidiaries"]
["Proved",461.5,601.79999999999995,650.1,615.6,625.5,634.5,666.6,654.9,683.9,675.9,655.6,652.79999999999995,630.79999999999995,611.1,605]
["Probable",470.7,173.8,195.5,379.3,275.7,285.39999999999998,321,418.8,393.8,432.8,458.7,486.1,507.4,507.7,535.79999999999995]
["Proved + probable",932.2,775.6,845.6,994.9,901.2,919.9,987.6,1073.7,1077.7,1108.7,1114.3,1138.9000000000001,"1 138,2",118.8,1140.8]
["Total (excluding share in the reserves of entities, investments in which are classified as joint operations)"]
["Proved",528.79999999999995,688.9,727,713.2,718.5,717.4,723.9,713.8,739.4,731.5,700.3,697.4,647.29999999999995,628.29999999999995,627]
["Probable",702.9,377.6,405.5,565,435.5,464.5,492.2,523.79999999999995,514.79999999999995,478.7,493.7,521.1,553.9,554.4,593.9]
["Proved + probable",1231.7,1066.5,1132.5,1278.2,1154,1181.9000000000001,1216.0999999999999,1237.5999999999999,1254.2,1210.2,1194,1218.5,"1 201,2",1182.7,1220.9000000000001]
["Entities, investments in which are classified as joint operations (attributable to the share of \nGazprom Group)"]
["Proved","x","x","x","x","x","x","x",105.7,95.4,99.1,92.4,92.1,89.5,84,80.5]
["Probable","x","x","x","x","x","x","x",65,57.6,65.099999999999994,69,68.099999999999994,69.3,68.7,73.400000000000006]
["Proved + probable","х","х","х","х","х","х","х",170.7,153,164.2,161.4,160.19999999999999,158.80000000000001,152.69999999999999,153.9]
["Total (including share in the reserves of entities, investments in which are classified as joint operations)"]
["Proved","x","x","x","x","x","x","x",819.5,834.8,830.5,792.7,789.5,736.8,712.3,707.5]
["Probable","x","x","x","x","x","x","x",588.79999999999995,572.4,543.9,562.70000000000005,589.20000000000005,623.20000000000005,623.1,667.3]
["Proved + probable","x","x","x","x","x","x","x",1408.3,1407.2,1374.4,1355.4,1378.7,"1 360,0",1355.4,1374.8]
["* Excluding share of Gazprom Group in the reserves of entities, investments in which are classified as joint operations."]
[]
["Hydrocarbon reserves (Russian classification of reserves) of Gazprom Group in Russia"]
["(including share in the reserves of entities, investments in which are classified as joint operations)"]
[null,"As at 31 December"]
[null,"2005*","2006*","2007*","2008*","2009*","2010*","2011*",2012,2013,2014,2015,2016,2017,2018,2019]
["Natural gas, bcm"]
["Ural Federal District",22341.200000000001,21937.3,21514.1,24265.200000000001,24390.6,23566.799999999999,23401.1,23144.2,22456.6,22032.2,21613.5,21309,"20 302,6",19735.7,19257.7]
["Northwest Federal District",94.2,93.2,93.3,92.2,90.4,89.3,88.2,87.4,86.9,85.8,85.1,307.3,319.3,318.60000000000002,315.10000000000002]
["South Federal District and North Caucasian Federal District",2616.6,2594.8000000000002,2581.8000000000002,2569,2560.6999999999998,2545.4,2523.1,2510.5,2498.9,2997.4,2985.3,2973.1,"2 961,1",2948.2,2924.6]
["Volga Federal District",830.4,810.6,792.8,774.7,758.5,751.3,735.4,717.8,696.2,684.1,663.5,648.9,640.70000000000005,626.9,666.6]
["Siberian Federal District",303.89999999999998,295,275.5,291.7,284.7,308.3,1668.1,1737.5,1755.1,1936.7,1971.6,2103.3000000000002,"2 102,1",2094.1999999999998,2080.5]
["Far Eastern Federal District",8.8000000000000007,8.8000000000000007,22,401.7,402.2,456.6,1106.2,1181,1197.2,1197.2,1402.1,1488.3,"1 420,1",1415.8,1425.4]
["Continental shelf of the Russian Federation",2935.6,4114.5,4505.8999999999996,4728.7,5091.3,5334.6,5524.8,5791.4,7005.7,7168,7426.2,7614,"7 609,5",8055.9,8229.1]
["Total",29130.7,29854.2,29785.4,{"$f":"SUM(E167:E173)","v":33123.200000000004},{"$f":"SUM(F167:F173)","v":33578.400000000001},{"$f":"SUM(G167:G173)","v":33052.299999999996},35046.9,35169.800000000003,35696.6,36101.4,36147.300000000003,36443.9,"35 355,4",35195.300000000003,34899]
["Gas condensate, mm tonnes"]
["Ural Federal District",688.4,689.7,690.2,760.4,770.9,724,730.5,713.8,712.4,675.7,695.2,690.6,750,744.1,739.2]
["Northwest Federal District",21.5,21.3,21.3,21.2,20.9,20.8,20.7,20.6,20.6,20.5,20.5,31.3,33.1,33,32.299999999999997]
["South Federal District and North Caucasian Federal District",395.8,392.4,389.2,386,383.5,380.6,377.4,374.3,371.5,447.5,444.7,441.9,439,436,432.4]
["Volga Federal District",59.2,58.7,58,57.5,57.2,57.4,57.1,57.4,56.9,56.5,56,55.7,55.6,55.3,55]
["Siberian Federal District",26.9,26.3,21.8,22.6,21.1,21.2,89.9,92.8,91.4,92.6,92.3,97,96.9,96,94.6]
["Far Eastern Federal District",0.1,0.1,0.1,5.8,6,6.9,25.2,26.4,27.3,27.3,29.6,30.5,29.4,29.3,31.6]
["Continental shelf of the Russian Federation",24.4,28.5,31.9,33.6,65.5,73.900000000000006,94.7,100.8,104.3,126.9,161.19999999999999,187.9,191.6,210.7,184.6]
["Total",1216.3,1217,1212.5,{"$f":"SUM(E176:E182)","v":1287.0999999999997},{"$f":"SUM(F176:F182)","v":1325.1},{"$f":"SUM(G176:G182)","v":1284.8000000000004},1395.5,1386.1,1384.4,1447,1499.5,1534.9,"1 595,6",1604.4,1569.7]
["Crude oil, mm tonnes"]
["Ural Federal District",1152,1146,1261.0999999999999,1303.0999999999999,1461.6,1400.1,1400.3,1532.9,1550.9,1560.1,1541.6,1531.3,"1 494,3",1471.2,1466.8]
["Northwest Federal District",2.1,13.5,14.2,15.7,16.899999999999999,17.3,17.3,4.8,4.8,4.8,5.6,19.8,20.3,20.3,19.5]
["South Federal District and North Caucasian Federal District",3.5,4.5,5.4,8.8000000000000007,9.6999999999999993,10.6,7.4,7.3,8,7.9,8,7.9,7.8,7.7,7.8]
["Volga Federal District",118.6,134.30000000000001,133.9,133.30000000000001,145.1,144.5,153.80000000000001,156.19999999999999,159,159.9,200.2,202.5,228.1,227.7,224.9]
["Siberian Federal District",31.3,38.5,44.6,47.6,58.3,61.9,86,188.5,191.4,198.9,205,201.3,199.6,187.4,188.4]
["Far Eastern Federal District",2.7,2.7,3.3,45.8,46,51.1,55.1,55.1,57.5,57.6,58.4,54.6,36.799999999999997,36.799999999999997,36.9]
["Continental shelf of the Russian Federation",47.3,47.4,47.4,47.4,47.4,47.4,47.4,47.4,47.4,63.9,63.2,61.1,58.4,64.599999999999994,61.4]
["Total",1357.5,1386.9,1509.9,{"$f":"SUM(E185:E191)","v":1601.6999999999998},{"$f":"SUM(F185:F191)","v":1785},{"$f":"SUM(G185:G191)","v":1732.8999999999999},1767.3,1992.2,2019,2053.1,2082,2078.5,"2 045,3",2015.7,2005.7]
["* Excluding share of Gazprom Group in the reserves of entities, investments in which are classified as joint operations."]
["Note. Until 2016 hydrocarbon reserves are given under A+B+C1 classification, since 1 January 2016 — under A+B1+C1 classification. Under the Oil and Flammable Gases Classification approved by the Ministry of Natural Resources of Russia (Decree No. 477 dated 1 November 2013, effective from 1 January 2016), grades A+B1+C1 are explored reserves of high geological certainty and correspond to previously used A+B+C1."]
[]
["Back to Contents"]

{"sheet":"Reserves of assoc. and JV","index":7,"n_rows":20,"n_cols":11,"rows_kept":20,"cut":false,"hidden":false,"merged":[[0,0,0,9],[1,0,1,10],[2,1,2,10],[10,1,10,10],[17,0,17,10],[7,0,7,15],[16,0,16,15]]}
["Hydrocarbon reserves (Russian classification of reserves) of the associated and jointly controlled companies in Russia\nattributable to the share of Gazprom Group"]
["Metric units"]
[null,"As at 31 December"]
[null,"2010*","2011*",2012,2013,2014,2015,2016,2017,2018,2019]
["Natural gas, bcm",645.4,717.4,732.2,851.5,971.7,1035.5,999.1,"1 003,8",1146.7,1064]
["Gas condensate, mm tonnes",57.8,60.1,62,80.099999999999994,97,112.1,104.5,100.8,110.1,111.1]
["Crude oil, mm tonnes",611.79999999999995,728.6,518.29999999999995,542,575.4,566.9,571.5,578.29999999999995,592,588.6]
["* Including share of Gazprom Group in the reserves of entities, investments in which are classified as joint operations."]
[]
["Oil equivalent"]
[null,"As at 31 December"]
[null,"2010*","2011*",2012,2013,2014,2015,2016,2017,2018,2019]
["Natural gas, mm boe",{"$f":"B5*6.49","v":4188.6459999999997},4655.9260000000004,4751.9780000000001,5526.2350000000006,6306.3330000000005,6720.3950000000004,{"$f":"H5*6.49","v":6484.1590000000006},"6 514,7",7442.1,6905.4]
["Gas condensate, mm boe",{"$f":"B6*8.18","v":472.80399999999997},491.61799999999999,507.15999999999997,655.21799999999996,793.45999999999992,916.97799999999995,{"$f":"H6*8.18","v":854.81},824.5,900.6,908.8]
["Crude oil, mm boe",4484.5,5340.6,3799.1,3972.9,4217.7,4155.3999999999996,{"$f":"H7*7.33","v":4189.0950000000003},"4 238,9",4339.3999999999996,4314.3999999999996]
["Total, mm boe",{"$f":"B13+B14+B15","v":9145.9500000000007},10488.144,9058.2379999999994,10154.353000000001,11317.493,11792.773000000001,{"$f":"H13+H14+H15","v":11528.064000000002},"11 578,1",12682.1,12128.6]
["* Including share of Gazprom Group in the reserves of entities, investments in which are classified as joint operations."]
["Note. For management accounting purposes, Gazprom Group measures hydrocarbon reserves and production in metric units. In this Factbook, gas reserves are converted from metric units to barrels of oil equivalent at a ratio of 1,000 cubic metres to 6.49 boe. "]
[]
["Back to Contents"]

{"sheet":"Change in reserves","index":8,"n_rows":88,"n_cols":4,"rows_kept":88,"cut":false,"hidden":false,"merged":[[84,0,84,3],[0,0,0,3],[82,0,82,3],[83,0,83,3],[85,0,85,3],[1,0,1,11]]}
["Change in Gazprom Group’s hydrocarbon reserves (Russian classification of reserves) in Russia, 2013–2019"]
["(including share in the reserves of entities, investments in which are classified as \njoint operations)"]
[null,"Natural gas","Gas condensate*","Crude oil"]
[null,"bcm","mm tonnes","mm tonnes"]
["Reserves as at 31 December 2012",35169.800000000003,1386.1,1992.2]
["Additions to reserves as a result of exploration",647.79999999999995,5.4,48.2]
["Transfer of reserves discovered in 2013 to the Undistributed Subsoil Fund of Russia** and to other companies, acquisition from other companies",-137.19999999999999,-1.9,-1.4]
["Receipt of licenses, including",484.1,3.6,"–"]
["due to new fields discovery***",0.9,0.1,"–"]
["due to resolution of  the Russian government, without tendering process",483.2,3.5,"–"]
["Return of licenses","–","–","–"]
["Acquisition of assets",13.7,0.5,"–"]
["Disposal of assets","–","–","–"]
["Revaluation",5.6,1.2,22.3]
["Production (including losses)","-487.2****",-10.5,-42.3]
["Reserves as at 31 December 2013",35696.6,1384.4,2019]
["Additions to reserves as a result of exploration",822.5,114.2,24.7]
["Transfer of reserves discovered in 2014 to the Undistributed Subsoil Fund of Russia** and to other companies, acquisition from other companies",-91.1,-6.9,2.2999999999999998]
["Receipt of licenses, including",182.3,2.8,5.8]
["due to new fields discovery***","–","–","–"]
["due to resolution of  the Russian government, without tendering process","–","–","–"]
["Return of licenses","–","–",-0.1]
["Acquisition of assets","–","–","–"]
["Disposal of assets","–","–","–"]
["Revaluation",-66,-37,44.7]
["Production (including losses)","-442.9****",-10.5,-43.3]
["Reserves as at 31 December 2014",36101.4,1447,2053.1]
["Additions to reserves as a result of exploration",531.1,68.5,20.6]
["Transfer of reserves discovered in 2015 to the Undistributed Subsoil Fund of Russia** and to other companies, acquisition from other companies",-62.9,-4.7,0.9]
["Receipt of licenses, including","– ","–",4.2]
["due to new fields discovery***","–","–","–"]
["due to resolution of  the Russian government, without tendering process","–","–","–"]
["Return of licenses","–","–","–"]
["Acquisition of assets","–","–","–"]
["Disposal of assets","–","–","–"]
["Revaluation",-5,-0.1,47.1]
["Production (including losses)","-417.3****",-11.2,-43.9]
["Reserves as at 31 December 2015",36147.300000000003,1499.5,2082]
["Additions to reserves as a result of exploration",457.4,38,19.3]
["Transfer of reserves discovered in 2016 to the Undistributed Subsoil Fund of Russia** and to other companies, acquisition from other companies",-2.4,-1.7,-2]
["Receipt of licenses, including",257.5,10.9,15]
["due to new fields discovery***","−","−","−"]
["due to resolution of  the Russian government, without tendering process","−","−","−"]
["Return of licenses",-0.6,"−","−"]
["Acquisition of assets","−","−","−"]
["Disposal of assets","−","−","−"]
["Revaluation",2,-0.1,11.1]
["Production (including losses)","-417.3****",-11.7,-46.9]
["Reserves as at 31 December 2016",36443.9,1534.9,2078.5]
["Additions to reserves as a result of exploration",852.9,95.6,3.3]
["Transfer of reserves discovered in 2017 to the Undistributed Subsoil Fund of Russia** and to other companies, acquisition from other companies",-46.4,"−",1.2]
["Receipt of licenses, including",12.8,1.9,"−"]
["due to new fields discovery***","−","−","−"]
["due to resolution of  the Russian government, without tendering process","−","−","−"]
["Return of licenses",-0.1,"−","−"]
["Acquisition of assets","−","−","−"]
["Disposal of assets","−","−",-9.4]
["Revaluation",-1437.8,-24.8,19.8]
["Production (including losses)","-469.9****",-12,-48.1]
["Reserves as at 31 December 2017",35355.4,1595.6,2045.3]
["Additions to reserves as a result of exploration",796.6,21.8,19.399999999999999]
["Transfer of reserves discovered in 2018 to the Undistributed Subsoil Fund of Russia** and to other companies, acquisition from other companies",-409.3,-0.6,-5.7]
["Receipt of licenses, including","−","−",0.8]
["due to new fields discovery***","−","−",0.8]
["due to resolution of  the Russian government, without tendering process","−","−","−"]
["Return of licenses","−","−","−"]
["Acquisition of assets","−","−",0.1]
["Disposal of assets","−","−","−"]
["Revaluation",-49.6,0.1,3.1]
["Production (including losses)","-497.8****",-12.5,-47.3]
["Reserves as at 31 December 2018",35195.300000000003,1604.4,2015.7]
["Additions to reserves as a result of exploration",556.70000000000005,11.7,29]
["Transfer of reserves discovered in 2019 to the Undistributed Subsoil Fund of Russia** and to other companies, acquisition from other companies",-0.4,"–",-0.2]
["Receipt of licenses, including",2.7,"–",7.4]
["due to new fields discovery***",2.7,"–","–"]
["due to resolution of  the Russian government, without tendering process","–","–","–"]
["Return of licenses",-0.8,"–",-0.1]
["Acquisition of assets",100.6,6.3,"–"]
["Disposal of assets","–","–","–"]
["Revaluation",-455.4,-39.4,1.4]
["Production (including losses)","-499,7****",-13.3,-47.5]
["Reserves as at 31 December 2019",34899,1569.7,2005.7]
["* Any changes in gas condensate reserves due to production are recognized as converted into stable gas condensate (C5+). The production volume of unstable gas condensate of Gazprom Group see in \nProduction section."]
["** Under the law of the Russian Federation, the subsoil user does not have any vested right to develop reserves discovered in areas covered by exploration licenses or beyond the licensed areas. Such reserves shall be transferred to the Undistributed Subsoil Fund of the Russian Federation. Subsequently the subsoil user \nhas a preference right to receive a license for their development."]
["*** Including licenses received by Gazprom Group in previous years."]
["**** Excluding dissolved gas."]
[]
["Back to Contents"]

{"sheet":"Discovered fields","index":9,"n_rows":24,"n_cols":4,"rows_kept":24,"cut":false,"hidden":false,"merged":[[0,0,0,3],[1,0,1,3],[3,1,4,1],[17,1,20,1],[21,0,21,5],[6,1,7,1],[8,1,9,1],[10,1,13,1],[14,1,16,1]]}
["Hydrocarbon fields discovered by Gazprom Group in Russia, 2013–2019"]
["(excluding fields discovered by entities in which Gazprom has investments classified as joint operations)"]
["Discovered field name","Year of discovery","Discovered field type*","Region of the Russian Federation"]
["Mangazeev",2013,"O","Tomsk Region"]
["Vostochno-Myginskoye",null,"O","Tomsk Region"]
["Vostochno-Imbinskoye",2014,"G","Krasnoyarsk Territory"]
["Padinskoye",2015,"GC","Yamal-Nenets Autonomous Area"]
["Naryksko-Ostashkinskoye",null,"Coalbed metane","Kemerovo Region"]
["Zapadno-Chatylkinskoye",2016,"O","Yamal-Nenets Autonomous Area"]
["Novosamarskoye",null,"O","Orenburg Region"]
["Yuzhno-Lunskoye",2017,"GC","The Sea of Okhotsk continental shelf of Russia"]
["Salairskoye ",null,"GC","Krasnoyarsk Territory"]
["Alexander Zhagrin",null,"O","Khanty-Mansi Autonomous Area – Yugra"]
["Novozarinskoye",null,"O","Orenburg Region"]
["Neptune",2018,"O","The Sea of Okhotsk continental shelf of Russia"]
["Triton",null,"O","The Sea of Okhotsk continental shelf of Russia"]
["Blizhneportovskoye",null,"G","Yamal-Nenets Autonomous Area"]
["Dinkov field",2019,"GC","The Kara Sea continental shelf of Russia"]
["Nyarmeyskoye",null,"G","The Kara Sea continental shelf of Russia"]
["Yagodnoye",null,"O","Orenburg Region"]
["Roshchinskoe",null,"O","Orenburg Region"]
["* As per the current Russian classification of Reserves and Resources of Oil and Flammable Gases: OGC — oil and gas condensate field; OG — oil and gas field; GC — gas and condensate field; G — gas field; O — oil field."]
[]
["Back to Contents"]

{"sheet":"License areas","index":10,"n_rows":26,"n_cols":8,"rows_kept":26,"cut":false,"hidden":false,"merged":[[11,0,11,7],[23,0,23,7],[1,0,1,5],[0,0,0,5],[2,1,2,7]]}
["Licences"]
["License areas in Russian Federation"]
[null,"As at 31 December"]
[null,2013,2014,2015,2016,2017,2018,2019]
["Gazprom Group"]
["Number of subsoil licences for geological surveying, for prospecting and exploration and for production of hydrocarbons",258,261,267,267,265,274,302]
["Total area of license areas, \nthousand square km",614.20000000000005,546.29999999999995,546.9,545.6,547.5,559.29999999999995,573.20000000000005]
["Entities investments in which are classified as joint operations"]
["Number of subsoil licences for geological surveying, for prospecting and exploration and for production of hydrocarbons",36,35,35,36,36,36,37]
["Total area of license areas, thousand square km",21.7,21.6,22.9,23.1,23.1,23.1,23.9]
[]
["License areas set out by federal districts of the Russian Federation,\nas at 31 December 2019, thousand square km"]
["License category*","Ural \nFederal District","Northwest\nFederal District","South and North Caucasian \nFederal Districts","Volga \nFederal District","Siberian\nFederal Discrict","Far Eastern \nFederal District","Continental shelf\nof the Russian Federation"]
["Gazprom Group"]
["Licenses for prospecting, exploration and production\nof hydrocarbons (SEPL)",29.9,"–",2.8,4.8,51.4,"–",325.60000000000002]
["Licenses for exploration and production of hydrocarbons (EPL)",67.8,1.5,5.4,3,20.7,12.6,11.8]
["Licenses for geological survey (SL)",20.5,"–",0.3,2.4,11,1.7,"–"]
["Total",118.2,1.5,8.5,10.199999999999999,83.1,14.3,337.4]
["Entities investments in which are classified\nas joint operations"]
["Licenses for prospecting, exploration and production\nof hydrocarbons (SEPL)",0.8,"–","–","–","–","–","–"]
["Licenses for exploration and production of hydrocarbons (EPL)",4.0999999999999996,"–","–","–",18.899999999999999,"–","–"]
["Licenses for geological survey (SL)",0.1,"–","–","–","–","–","–"]
["Total",5,"–","–","–",18.899999999999999,"–","–"]
["* License categories in accordance with Russian legislation."]
[]
["Back to Contents"]

{"sheet":"Core licenses","index":11,"n_rows":90,"n_cols":7,"rows_kept":90,"cut":false,"hidden":false,"merged":[[63,2,64,2],[63,3,64,3],[61,3,62,3],[65,0,65,6],[81,2,82,2],[81,3,82,3],[79,0,79,6],[69,0,69,6],[66,0,66,6],[70,2,73,2],[70,3,73,3],[75,0,75,6],[76,2,77,2],[74,0,74,6],[76,3,77,3],[43,2,49,2],[27,3,30,3],[43,3,49,3],[16,2,18,2],[39,0,39,6],[42,0,42,6],[16,3,18,3],[27,2,30,2],[34,2,35,2],[37,2,38,2],[37,3,38,3],[52,2,60,2],[52,3,60,3],[61,2,62,2],[0,0,0,6],[4,2,7,2],[4,3,7,3],[21,2,25,2],[21,3,25,3],[10,2,14,2],[10,3,14,3],[2,0,2,6],[8,2,9,2],[8,3,9,3],[3,0,3,6],[51,0,51,6],[36,0,36,6],[87,0,87,6],[83,0,83,6],[84,0,84,6],[85,0,85,6],[86,0,86,6]]}
["Licenses for the main hydrocarbon fields in Russia, as at 31 December 2019"]
["Field name","Year\nof production\nstart","Subsidiary — license holder","Gazprom Group\nshare*, %","Field type**","License\ncategory***","License\nexpiration\nyear****"]
["Gazprom Group"]
["Western Siberia (Ural Federal Dustrict)"]
["Urengoyskoye",1978,"OOO Gazprom Dobycha\nUrengoy",1,"OGC","EPL",2038]
["Severo-Urengoyskoye",1987,null,null,"OGC","EPL",2030]
["Yen-Yakhinskoye",1985,null,null,"OGC","EPL",2038]
["Pestsovoye",2004,null,null,"OGC","EPL",2041]
["Yamburgskoye",1991,"OOO Gazprom Dobycha\nYamburg",1,"OGC","EPL",2054]
["Zapolyarnoye",2001,null,null,"OGC ","EPL",2114]
["Medvezhye",1972,"OOO Gazprom Dobycha\nNadym",1,"OGC","EPL",2086]
["Yamsoveiskoye",1997,null,null,"OGC","EPL",2039]
["Ubileynoye",1992,null,null,"OGC","EPL",2063]
["Kharasaveiskoye","–",null,null,"GC","EPL",2033]
["Bovanenkovskoye",2012,null,null,"OGC","EPL",2042]
["Novoportovskoye",2016,"OOO Gazpromneft-Yamal",1,"OGC","EPL",2150]
["Komsomolskoye",1993,"OOO Gazprom Dobycha\nNoyabrsk",1,"OGC","EPL",2049]
["Yety-Purovskoye",2004,null,null,"OGC","EPL",2038]
["Zapadno-Tarkosalynskoye",1996,null,null,"OGC","SEPL",2116]
["Gubkinskoye",1999,"ZAO Purgaz",0.51,"OGC","EPL",2040]
["Uzhno-Russkoye",2007,"OAO Severneftegazprom","50.001%\n(of ordinary\nshares)","OGC","EPL",2043]
["Tambeyskoye (including Zapadno-Tambeysky, Severo-Tambeysky, Tasiysky license blocks)","–","PJSC Gazprom",null,"OGC","EPL",2028]
["Kruzenshternskoye","–",null,null,"GC","EPL",2028]
["Malyginskoye","–",null,null,"GC","EPL",2028]
["Antypajutinskoye","–",null,null,"G","EPL",2028]
["Tota-Yakhinskoe","–",null,null,"G","EPL",2028]
["Tazovskoye","–","OOO Meretoyahaneftegaz",1,"OGC","SEPL",2025]
["Sugmutskoye",1995,"AO Gazpromneft-\nNoyabrskneftegaz",1,"O","EPL",2089]
["Sutorminskoye",1982,null,null,"OGC","EPL",2110]
["Muravlenkovskoye",1982,null,null,"OG","EPL",2072]
["Sporyshevskoye",1996,null,null,"O","EPL",2083]
["Vyngapurovskoye (Khanty-\nMansi Autonomous Area — Yugra) ",1982,null,null,"OGC","EPL",2090]
["Vyngapurovskoye (Yamal-\nNenets Autonomous Area)",1982,null,null,"OGC","EPL",2113]
["Southern part\nof Priobskoye",1999,"OOO Gazpromneft-Khantos",1,"O","EPL",2038]
["Vyngapurovskoye\n(Khanty-Mansi\nAutonomous Area)",1982,"OOO Zapolyarneft*****",1,"OGC","EPL",2090]
["Vyngapurovskoye\n(Yamal-Nenets\nAutonomous Area)",1982,null,1,"OGC","EPL",2113]
["Southern Russia (South Federal District)"]
["Astrakhanskoye",1986,"OOO Gazprom Dobycha Astrakhan",1,"GC","EPL",2222]
["Zapadno-Astrakhanskoye","–",null,null,"GC","SEPL",2029]
["South Ural region (Volga Federal District)"]
["Orenburgskoye",1974,"OOO Gazprom Dobycha Orenburg",1,"OGC","EPL",2038]
["Estern section of\nOrenburgskoye OGC field",1994,"OOO Gazpromneft-Orenburg",1,"OGC","EPL",2138]
["Eastern Siberia and the Far East (Siberian and Far Eastern Federal Districts)"]
["Chayandinskoye",2019,"PJSC Gazprom",null,"OGC","EPL",2028]
["Kovyktinskoye (including\nKhandinkaya square)","–",null,null,"GC","EPL",2037]
["Tas-Yuryakhskoye","–",null,null,"OGC","EPL",2031]
["Sobolokh-Nedzhelinskoye","–",null,null,"GC","EPL",2031]
["Part of Srednetyungskoye","–",null,null,"GC","EPL",2031]
["Verkhnevilyuchanskoye","–",null,null,"OGC","EPL",2031]
["Chikanskoye","–",null,null,"GC","EPL",2028]
["Sobinskoye","–","OOO Gazprom dobycha Krasnodar",1,"OGC","SEPL",2028]
["Continental shelf of the Russian Federation"]
["Shtokmanovskoye\n(including western part)","–","PJSC Gazprom",null,"GC","EPL",2043]
["Kirinskoye",2013,null,null,"GC","EPL",2028]
["Yuzhno-Kirinskoye","–",null,null,"GC","SEPL",2039]
["Yuzhno-Lunskoye","–",null,null,"GC","SEPL",2039]
["Mynginskoe","–",null,null,"GC","SEPL",2039]
["Ledovoye","–",null,null,"GC","EPL",2033]
["Rusanovskoye","–",null,null,"GC","SEPL",2043]
["Ludlovskoye","–",null,null,"G","SEPL",2043]
["Leningradskoye","–",null,null,"GC","SEPL",2043]
["Kamennomysskoye-more","–","OOO Gazprom Dobycha Yamburg",1,"G","EPL",2057]
["Severo-Kamennomysskoye","–",null,null,"GC","EPL",2076]
["Prirazlomnoye",2013,"OOO Gazprom Neft shelf",1,"O","EPL",2043]
["Dolginskoye","–",null,null,"O","EPL",2035]
["Companies, investments in which are classified as joint operations"]
["Western Siberia (Ural Federal District)"]
["Zapadno-Salymskoye",2004,"Salym Petroleum Development N.V.",0.5,"O","EPL",2130]
["Sovetskoye (Khanty-\nMansi Autonomous Area)",1966,"AO Tomskneft VNC",0.5,"O","EPL",2145]
["Eastern Siberia and the Far East (Siberian and Far Eastern Federal Districts)"]
["Krapivinskoye",1984,"AO Tomskneft VNC",0.5,"O","EPL",2159]
["Sovetskoye (the Tomsk Region)",1966,null,null,"O","EPL",2145]
["Pervomayskoye (the Tomsk Region)",1981,null,null,"O","EPL",2105]
["Luginetskoye",1982,null,null,"OGC","EPL",2098]
["Associated and jointly controlled companies"]
["Western Siberia (Ural Federal District)"]
["Vostochno-Messoyakhskoe",2016,"AO Messoyakhaneftegaz",0.5,"OGC","SEPL",2140]
["Zapadno-Messoyakhskoe","–",null,null,"OG","SEPL",2027]
["Severo-Parusovoye","–","OOO RusGasAlliance*****",0.5,"OGC","EPL",2027]
["Eastern Siberia and the Far East (Siberian and Far Eastern Federal Districts)"]
["Kuymbinskoye",2018,"OOO Slavneft-Krasnoyarskneftegaz",0.5,"OGC","SEPL",2171]
["Piltun-Astokhskoe",1999,"Sakhalin Energy Investment Company Ltd.","50% + 1 share","OGC","SEPL",2021]
["Lunskoe",2009,null,null,"OGC","SEPL",2021]
["* The aggregate share of the Group in the authorized capital of the investment objects, as reflected in the consolidated financial statements of Gazprom Group under IFRS."]
["** As per the current Russian classification of Reserves and Resources of Oil and Flammable Gases: OGC — oil and gas condensate field; OG — oil and gas field; GC — gas and condensate field; G — gas field; O — oil field."]
["*** Russian legislation provides for several types of licenses applicable to the study, exploration and production of natural resources, including: licenses for geological survey (SL); licenses for exploration and production of hydrocarbons (EPL); and licenses for geological survey, exploration and production of hydrocarbons (SEPL). Abbreviations are stated according to the classification determined by the Russian legislation."]
["**** While license holders of Gazprom Group meet the main terms and conditions of license agreements, they have a right to prolong current licenses to complete exploration and development of fields. Gazprom plans to prolong licenses for the period till the completion of profitable development of fields."]
["***** The financial results of this entity are not included in the IFRS consolidated financial statements for 2019 due to insignificance."]
[]
["Back to Contents"]

{"sheet":"Production","index":12,"n_rows":108,"n_cols":16,"rows_kept":108,"cut":false,"hidden":false,"merged":[[0,0,0,11],[3,0,3,7],[9,0,9,11],[4,1,4,15],[23,1,23,15],[11,0,11,7],[12,1,12,15],[18,0,18,11],[19,0,19,24],[1,0,1,7],[2,0,2,7],[21,0,21,7],[22,33,22,37],[22,38,22,42],[57,1,57,15],[90,1,90,15],[28,0,28,11],[22,18,22,22],[22,23,22,27],[22,28,22,32],[52,0,52,11],[86,0,86,11],[34,5,34,9],[32,1,32,15],[53,0,53,15],[22,0,22,7],[30,0,30,7],[31,0,31,7],[22,93,22,97],[22,48,22,52],[22,53,22,57],[22,58,22,62],[22,63,22,67],[22,68,22,72],[22,43,22,47],[22,73,22,77],[22,78,22,82],[22,83,22,87],[22,88,22,92],[22,253,22,257],[22,233,22,237],[22,163,22,167],[22,148,22,152],[22,153,22,157],[22,158,22,162],[22,228,22,232],[22,218,22,222],[22,223,22,227],[22,238,22,242],[22,243,22,247],[22,188,22,192],[22,193,22,197],[22,198,22,202],[22,203,22,207],[22,208,22,212],[22,248,22,252],[22,213,22,217],[22,98,22,102],[22,133,22,137],[22,138,22,142],[22,143,22,147],[22,103,22,107],[22,168,22,172],[22,173,22,177],[22,178,22,182],[22,183,22,187],[22,108,22,112],[22,113,22,117],[22,118,22,122],[22,123,22,127],[22,128,22,132],[55,0,55,7],[56,0,56,7],[104,0,104,15],[105,0,105,15],[88,0,88,7],[89,0,89,7]]}
["Production"]
["Hydrocarbon production of Gazprom Group in Russia"]
["(including share in the production of entities, investments in which are classified as joint operations)"]
["Metric units"]
[null,"For the year ended 31 December"]
[null,"2005*","2006*","2007*","2008*","2009*","2010*","2011*",2012,2013,2014,2015,2016,2017,2018,2019]
["Natural and associated gas, bcm",555,555.95000000000005,548.54999999999995,549.73,461.52,508.59,513.16999999999996,487.99,488.39,444.9,419.52,420.13,472.05,498.68,501.22]
["Gas condensate, mm tonnnes",11.5,11.37,11.27,10.93,10.07,11.29,12.07,12.85,14.66,14.49,15.34,15.85,15.94,15.93,16.71]
["Crude oil, mm tonnes",9.49,34.020000000000003,33.979999999999997,32.049999999999997,31.62,32.01,32.28,42.26,42.41,43.53,44.04,47.15,48.63,48.28,47.96]
["* Excluding share of Gazprom Group in the production of entities, investments in which are classified as joint operations."]
[]
["Oil equivalent"]
[null,"For the year ended 31 December"]
[null,"2005*","2006*","2007*","2008*","2009*","2010*","2011*",2012,2013,2014,2015,2016,2017,2018,2019]
["Natural and associated gas, mm boe",{"$f":"B7*6.49","v":3601.9500000000003},3608.1155000000003,3560.0895,3567.7477000000003,2995.2647999999999,3300.7491,3330.4732999999997,3167.06,3169.65,2887.4,2722.68,2726.64,3063.6,3236.43,3252.92]
["Gas condensate, mm boe",94.07,93.01,92.19,89.41,82.37,92.35,98.73,105.11,119.92,118.53,125.48,129.65,130.38999999999999,130.31,136.69]
["Crude oil, mm boe",69.56,249.37,249.07,234.93,231.77,234.63,236.61,309.77,310.87,319.07,322.81,345.61,356.46,353.89,351.55]
["Total, mm boe",{"$f":"B15+B16+B17","v":3765.5800000000004},3950.4955000000004,3901.3495000000003,3892.0877,3309.4047999999998,3627.7291,3665.8132999999998,3581.94,3600.44,3325,3170.97,3201.91,3550.45,3720.63,3741.16]
["* Excluding share of Gazprom Group in the production of entities, investments in which are classified as joint operations."]
["Note. For management accounting purposes, Gazprom Group measures hydrocarbon reserves and production in metric units. In this Factbook, gas production is converted from metric units to barrels of oil equivalent \nat a ratio of 1,000 cubic metres to 6.49 boe. "]
[]
["Daily average hydrocarbon production of Gazprom Group in Russia"]
["(including share in the production of entities, investments in which are classified as joint operations)"]
[null,"For the year ended 31 December"]
[null,"2005*","2006*","2007*","2008*","2009*","2010*","2011*",2012,2013,2014,2015,2016,2017,2018,2019]
["Natural and associated gas, mmcm / day",1520.55,1523.15,1502.88,1501.99,1264.4000000000001,1393.4,1405.9,1333.3,1338,1218.9000000000001,1149.4000000000001,1147.9000000000001,1293.3,1366.2,1373.2]
["Gas condensate, thousand tonnes / day",31.51,31.15,30.88,29.86,27.6,30.9,33.1,35.1,40.200000000000003,39.700000000000003,42,43.3,43.7,43.7,45.8]
["Crude oil, thousand tonnes / day",26,93.21,93.1,87.57,86.6,87.7,88.4,115.5,116.2,119.3,120.7,128.80000000000001,133.19999999999999,132.30000000000001,131.4]
["* Excluding share of Gazprom Group in the production of entities, investments in which are classified as joint operations."]
[]
["Gazprom Group’s hydrocarbon production in Russia"]
["(including share in the production of entities, investments in which are classified as joint operations)"]
[null,"For the year ended 31 December"]
[null,"2005*","2006*","2007*","2008*","2009*","2010*","2011*",2012,2013,2014,2015,2016,2017,2018,2019]
["Natural and associated gas, bcm"]
["PJSC Gazprom and its major subsidiaries**",539.35,538.84,530.51,517.63,425.02,465.14,464.81,437.9,436.29,393.73,368.2,368.6,419.72,444.99,445.09]
["PAO Gazprom Neft and its subsidiaries",0.55000000000000004,2.0699999999999998,1.77,2.16,2.08,2.95,7.33,8.73,11.36,11.86,12.53,13.64,15.4,17.84,21.26]
["ZAO Purgaz",15.1,15.04,15.02,14.87,11.84,15.14,15.37,15.04,14.62,13.25,12.7,11.74,10.82,9.64,8.7200000000000006]
["OAO Severneftegazprom","–","–",1.25,15.07,22.58,25.36,25.66,25.35,25.12,25.04,25.05,25.12,25.04,25.13,25.07]
["Total (excluding share in the production of entities, investments in which are classified as joint operations)",555,555.95000000000005,548.54999999999995,549.73,461.52,508.59,513.16999999999996,487.02,487.39,443.88,418.48,419.1,470.98,497.6,500.14]
["Entities, investments in which are classified as joint operations (attributable to the share of Gazprom Group)","x","x","x","x","x","x","x",0.97,1,1.02,1.04,1.03,1.07,1.08,1.08]
["Total (including share in the production of entities, investments in which are classified as joint operations)","x","x","x","x","x","x","x",487.99,488.39,444.9,419.52,420.13,472.05,498.68,501.22]
["Gas condensate, mm tonnes"]
["PJSC Gazprom and its major subsidiaries**",11.5,11.37,11.27,10.93,10.07,11.29,12.07,12.84,14.65,14.47,15.31,15.83,15.92,15.9,16.670000000000002]
["PAO Gazprom Neft and its subsidiaries","–","–","–","–","–","–","–",0.01,0.01,0.02,0.03,0.02,0.02,0.03,0.04]
["Total",11.5,11.37,11.27,10.93,10.07,11.29,12.07,12.85,14.66,14.49,15.34,15.85,15.94,15.93,16.71]
["Crude oil, mm tonnes"]
["PJSC Gazprom and its major subsidiaries**",1.29,1.3,1.32,1.27,1.55,1.85,1.9,1.7,1.69,1.73,1.74,1.55,1.5,1.45,1.67]
["PAO Gazprom Neft and its subsidiaries",8.1999999999999993,32.72,32.659999999999997,30.78,30.07,30.16,30.38,31.63,32.15,33.56,34.299999999999997,37.74,39.479999999999997,39.46,39.11]
["Total (excluding share in the production of entities, investments in which are classified as joint operations)",9.49,34.019999999999996,33.979999999999997,32.050000000000004,31.62,32.01,32.28,33.33,33.840000000000003,35.29,36.04,39.29,40.98,40.909999999999997,40.78]
["Entities, investments in which are classified as joint operations (attributable to the share of Gazprom Group)","x","x","x","x","x","x","x",8.93,8.57,8.24,8,7.86,7.65,7.37,7.18]
["Total (including share in the production of entities, investments in which are classified as joint operations)","x","x","x","x","x","x","x",42.26,42.41,43.53,44.04,47.15,48.63,48.28,47.96]
["* Excluding share of Gazprom Group in the production of entities, investments in which are classified as joint operations."]
["** Taking into account the production volumes of OOO Gazprom dobycha shelf Yuzhno-Sakhalinsk, AO Tomskgazprom. Also taking into account the production volumes of AO Gazprom Gazoraspredeleniye Elista, OOO Gazprom dobycha Irkutsk, and OOO Servisneftegaz; the financial results of these entities are not included in Gazprom Group’s IFRS consolidated financial statements due to insignificance."]
[]
["Hydrocarbon production of Gazprom Group in Russia set out by Federal Districts"]
["(including share in the production of entities, investments in which are classified as joint operations)"]
[null,"For the year ended 31 December"]
[null,"2005*","2006*","2007*","2008*","2009*","2010*","2011*",2012,2013,2014,2015,2016,2017,2018,2019]
["Natural and associated gas, bcm"]
["Ural FD",516.39,517.88,510.57,512.16999999999996,427.44,471.68,476.53,450.96,452.34,409.96,385.18,385.46,437.56,464.36,465.76]
["North-Western FD",2.82,2.75,2.75,2.64,2.54,2.52,2.4,2.33,2.38,2.25,2.14,2.06,2.02,1.89,1.99]
["South FD and Nortern Caucasian FD",13.55,13.36,13.37,13.23,10.76,13.01,13.21,12.89,11.86,11.24,11.15,11.28,11.58,11.94,12.22]
["Volga FD",18.72,18.64,18.7,18.71,17.850000000000001,18.59,17.940000000000001,17.52,17.27,16.73,16.22,15.65,14.95,14.4,14.42]
["Siberian FD",3.5199999999999818,3.32000000000005,3.1599999999999682,2.9800000000000182,2.93,2.79,3.09,4.29,4.43,4.2300000000000004,3.82,4.55,4.88,4.91,4.8600000000000003]
["Far Eastern FD","–","–","–","–","–","–","–","–",0.2,0.39,0.4,0.41,0.43,0.45,1.21]
["Continental shelf of the Russian Federation","–","–","–","–","–","–","–","–",0.01,0.1,0.61,0.72,0.63,0.73,0.76]
["Total",555,555.95000000000005,548.54999999999995,549.73,461.52000000000004,508.59,513.16999999999996,487.99,488.39,444.9,419.52,420.13,472.05,498.68,501.22]
["Gas condensate, mm tonnes"]
["Ural FD",6.38,6.29,6.22,5.95,6.04,6.34,7.1,8.0399999999999991,10.18,10.3,11.14,11.59,11.51,11.38,12.1]
["North-Western FD",0.25,0.23,0.21,0.19,0.17,0.15,0.14000000000000001,0.13,0.14000000000000001,0.13,0.12,0.12,0.12,0.12,0.11]
["South FD and Nortern Caucasian FD",4.24,4.25,4.2699999999999996,4.26,3.35,4.1399999999999997,4.22,4.13,3.78,3.56,3.51,3.56,3.68,3.81,3.9]
["Volga FD",0.27,0.27,0.28000000000000003,0.27,0.26,0.27,0.25,0.22,0.19,0.16,0.15,0.14000000000000001,0.12,0.12,0.13]
["Siberian FD",0.35999999999999943,0.33000000000000007,0.28999999999999915,0.25999999999999979,0.25,0.39,0.36,0.33,0.37,0.31,0.31,0.31,0.39,0.37,0.32]
["Far Eastern FD","–","–","–","–","–","–","–","–",0,0.01,0.01,0.01,0.01,0.02,0.02]
["Continental shelf of the Russian Federation","–","–","–","–","–","–","–","–","–",0.02,0.1,0.12,0.11,0.11,0.13]
["Total",11.5,11.37,11.269999999999998,10.93,10.07,11.29,12.07,12.85,14.66,14.49,15.34,15.85,15.94,15.93,16.71]
["Crude oil, mm tonnes"]
["Ural FD",8.43,31.92,31.74,29.6,28.91,28.73,28.66,32.950000000000003,32.700000000000003,32.83,32.39,34.450000000000003,35.71,36.82,36.340000000000003]
["North-Western FD",0.09,7.0000000000000007E-2,0.08,7.0000000000000007E-2,0.06,0.06,0.05,0.04,0.05,0.03,0.04,0.03,0.02,0.02,0.02]
["South FD and Nortern Caucasian FD",0.12,0.11,0.08,0.08,0.12,0.16,0.16,0.16,0.14000000000000001,0.11,0.09,0.09,0.09,0.08,0.12]
["Volga FD",0.56000000000000005,0.6,0.64,0.68,0.7,0.69,0.75,1.23,1.77,2.46,2.76,2.85,2.85,2.79,3.1]
["Siberian FD",0.29000000000000092,1.3200000000000003,1.4400000000000048,1.6199999999999974,1.8300000000000018,2.37,2.66,7.88,7.75,7.84,7.87,7.58,7.32,5.38,5.24]
["Far Eastern FD","–","–","–","–","–","–","–","–","–","–",0,"–",0,0,0]
["Continental shelf of the Russian Federation","–","–","–","–","–","–","–","–","–",0.26,0.89,2.15,2.64,3.19,3.14]
["Total",9.49,34.020000000000003,33.979999999999997,32.049999999999997,31.62,32.01,32.28,42.26,42.41,43.53,44.04,47.15,48.63,48.28,47.96]
["* Excluding share of Gazprom Group in the production of entities, investments in which are classified as joint operations."]
[]
["Useful life of APG by Gazprom Group in Russia"]
["(including share in the production of entities, investments in which are classified as joint operations)"]
[null,"For the year ended 31 December"]
[null,null,"2006*","2007*","2008*","2009*","2010*","2011*","2012*",2013,2014,2015,2016,2017,2018,2019]
["APG usage, bcm"]
["PJSC Gazprom and its major subsidiaries**",null,1.73,1.69,1.62,1.68,1.83,2.0499999999999998,1.48,1.27,1.42,1.87,1.79,1.64,1.57,1.66]
["PAO Gazprom Neft and its subsidiaries",null,2.04,1.75,2.14,2.06,2.4500000000000002,2.66,4.18,5.39,6.13,6.51,7.63,8.7100000000000009,11.29,14.81]
["Total (excluding share in the production volumes of entities in which Gazprom has investments classified as \njoint operations)",null,3.77,3.44,3.76,3.74,4.28,4.71,5.66,6.66,7.55,8.3800000000000008,9.42,10.35,12.86,16.47]
["Entities in which Gazprom has investments classified as joint operations (attributable to the share of Gazprom Group)",null,null,null,null,null,null,null,null,0.99,1.02,1.05,1.03,1.07,1.08,1.08]
["Total (including share in the production volumes of entities in which Gazprom has investments classified as \njoint operations)",null,null,null,null,null,null,null,null,7.65,8.58,9.43,10.45,11.42,13.94,17.55]
["Level of useful life of APG, %"]
["PJSC Gazprom and its major subsidiaries**",null,81.2,82.8,83.3,81.8,81.599999999999994,87,83.2,90.9,93.5,95.6,97.8,98.4,98.1,98.5]
["PAO Gazprom Neft and its subsidiaries",null,45,35.700000000000003,46.8,48.1,55.3,58.8,65.7,79.5,80.5,79.599999999999994,79.2,76.2,78.400000000000006,89]
["Total (excluding share in the production volumes of entities in which Gazprom has investments classified as \njoint operations)",null,56.6,49.7,57.7,59.1,64.099999999999994,68.400000000000006,69.2,81.400000000000006,82.7,82.7,82.2,79,80.400000000000006,89.9]
["Entities in which Gazprom has investments classified as joint operations (attributable to the share of Gazprom Group)",null,null,null,null,null,null,null,null,87.3,90,89.9,87.2,88.9,91.6,91.8]
["Total (including share in the production volumes of entities in which Gazprom has investments classified as \njoint operations)",null,null,null,null,null,null,null,null,82.2,83.5,83.5,82.7,79.8,81.8,90.1]
["* Excluding share of Gazprom Group in the production of entities, investments in which are classified as joint operations."]
["** Taking into account the production volumes of AO Tomskgazprom. Also taking into account the production volumes of OOO Servisneftegaz; the financial results of this entity are not included in Gazprom Group’s IFRS consolidated financial statements due to insignificance."]
[]
["Back to Contents"]

{"sheet":"Max daily gas production","index":13,"n_rows":9,"n_cols":6,"rows_kept":9,"cut":false,"hidden":false,"merged":[[0,0,0,5],[1,0,1,5],[2,1,2,5]]}
["Actual maximum daily natural and associated gas production in the autumn-winter period"]
["(excluding entities, investments in which are classified as joint operations)"]
[null,"Autumn-winter perion"]
[null,"2014/2015","2015/2016","2016/2017","2017/2018","2018/2019"]
["Date","2014-12-10","2015-10-22","2016-12-02","2018-02-23","2019-01-19"]
["Production, mmcm",1456.9,1555.7,1535.6,1512.6,1538.6]
["incluging production in UGSS",1318.1,1320.2,"1 529,0","1 494,3","1 510,5"]
[]
["Back to Contents"]

{"sheet":"Production of the assoc. and JV","index":14,"n_rows":20,"n_cols":14,"rows_kept":20,"cut":false,"hidden":false,"merged":[[17,0,17,13],[16,0,16,15],[0,0,0,16],[2,1,2,15],[10,1,10,16],[7,0,7,15],[1,0,1,7]]}
["Hydrocarbon production of the associated and jointly controlled companies in Russia attributable to the share of Gazprom Group"]
["Metric units"]
[null,"For the year ended 31 December"]
[null,"2007*","2008*","2009*","2010*","2011*",2012,2013,2014,2015,2016,2017,2018,2019]
["Natural and associated gas, bcm",8.5299999999999994,10.99,13.58,17.63,11.3302,11.88,13.04,18.18,25.55,27.21,27.04,26.92,26.86]
["Gas condensate, mm tonnnes",0.73,0.73,1.21,1.59,0.99,1.1299999999999999,1.26,2.3199999999999998,4.7,5.17,4.96,4.87,4.74]
["Crude oil, mm tonnes",11.33,16.260000000000002,19.170000000000002,20.74,20.52,10.82,10.25,9.9600000000000009,9.59,9.93,10.91,11.22,11.77]
["* Including share of Gazprom Group in the production of entities, investments in which are classified as joint operations."]
[]
["Oil equivalent"]
[null,"For the year ended 31 December"]
[null,"2007*","2008*","2009*","2010*","2011*",2012,2013,2014,2015,2016,2017,2018,2019]
["Natural and associated gas, mm boe",{"$f":"ROUND(B5*6.49,2)","v":55.36},71.33,88.13,114.42,73.53,77.099999999999994,84.63,117.99,165.82,176.59,175.49,174.71,174.32]
["Gas condensate, mm boe",{"$f":"ROUND(B6*8.18,2)","v":5.97},5.97,9.9,13.01,8.1,9.24,10.31,18.98,38.450000000000003,42.29,40.57,39.840000000000003,38.770000000000003]
["Crude oil, mm boe",{"$f":"ROUND(B7*7.33,2)","v":83.05},119.19,140.52000000000001,152.02000000000001,150.41,79.31,75.13,73.010000000000005,70.290000000000006,72.790000000000006,79.97,82.24,86.27]
["Total, mm boe",{"$f":"B13+B14+B15","v":144.38},196.49,238.55,279.45000000000005,232.04,165.64999999999998,170.07,209.98000000000002,274.56,291.67,296.02999999999997,296.79000000000002,299.36]
["* Including share of Gazprom Group in the production of entities, investments in which are classified as joint operations."]
["Note. For management accounting purposes, Gazprom Group measures hydrocarbon reserves and production in metric units. In this Factbook, gas production is converted from metric units to barrels of oil equivalent at a ratio of 1,000 cubic metres to 6.49 boe. "]
[]
["Back to Contents"]

{"sheet":"Explor. and drill. in Russia","index":15,"n_rows":68,"n_cols":22,"rows_kept":68,"cut":false,"hidden":false,"merged":[[1,0,1,11],[2,0,2,11],[22,0,22,11],[13,0,13,11],[0,0,0,11],[23,0,23,11],[3,1,3,15],[14,1,14,15],[24,1,24,15],[38,1,38,15],[45,1,45,15],[59,1,59,15],[37,0,37,11],[43,0,43,11],[44,0,44,11],[58,0,58,11],[56,0,56,13]]}
["Geological Exploration, Production Drilling and Production Capacity"]
["Key figures of Gazprom Group’s geological exploration activities"]
["(excluding entities, investments in which are classified as joint operations)"]
[null,"For the year ended 31 December"]
[null,2005,2006,2007,2008,2009,2010,2011,2012,2013,2014,2015,2016,2017,2018,2019]
["Exploration drilling, thousand m",136.30000000000001,177.7,207.6,284.89999999999998,163.69999999999999,204.9,157.69999999999999,126.4,146.4,165.4,143.6,111.6,85.9,157.6,201.7,null,126.4,146.4,165.4,143.6,111.6]
["Completed exploration wells, units",44,62,39,80,75,82,60,54,53,41,43,40,36,25,41,null,54,53,41,43,40]
["including producing wells",35,50,20,50,43,64,45,46,37,31,38,34,31,20,39,null,46,37,31,38,34]
["Seismic exploration 2D, thousand linear km",9.8000000000000007,9.1999999999999993,6.4,12.4,14.7,18.5,2.8,1.9,1.4,6.6,0.3,1.1000000000000001,"–",5.7,15,null,1.9,1.4,6.6,0.3,1.1000000000000001]
["Seismic exploration 3D, thousand square km",3.2,7.9,5.7,6.6,9.5,10.8,8.6999999999999993,8.4,13.3,12.6,20,20.6,18.7,9.5,7.9,null,8.4,13.3,12.6,20,20.6]
["Reserves growth due to geological exploration, mm boe",3706.2,3961.4,3712.7,3889.2,3498,4100,4978.8,3955.5,4183.5,5942.2,3835.1,3404,6341.5,5440.6,3906.6,null,3955.5,4183.5,5942.2,3835.1,3404]
["Drilling efficiency, thousand boe / m",27.1,22.1,17.899999999999999,13.7,21.4,20,31.2,31.3,28.6,35.9,26.7,30.5,73.8,34.5,19.399999999999999,null,31293.5,28575.8,35926.199999999997,26706.799999999999,30501.8]
[]
["Key figures of geological exploration activities of entities, investments in which are classified as joint operations"]
[null,"For the year ended 31 December"]
[null,2005,2006,2007,2008,2009,2010,2011,2012,2013,2014,2015,2016,2017,2018,2019]
["Exploration drilling, thousand m","x","x","x","x","x","x","x",14,11.6,13.1,3.2,7.4,12.8,28.7,74.7,null,14,11.6,13.1,3.2,7.4]
["Completed exploration wells, units","x","x","x","x","x","x","x",5,5,4,1,2,4,8,18,null,5,5,4,1,2]
["including producing wells","x","x","x","x","x","x","x",4,3,3,1,1,4,5,14,null,4,3,3,1,1]
["Seismic exploration 2D, linear km","x","x","x","x","x","x","x",481,"–","–","–","−","–","–","–",null,481,"–","–","–","−"]
["Seismic exploration 3D, square km","x","x","x","x","x","x","x",1085,858,494,459,130,200,474,935,null,1085,858,494,459,130]
[]
["Gazprom Group’s production drilling"]
["(excluding entities, investments in which are classified as joint operations)"]
[null,"For the year ended 31 December"]
[null,2005,2006,2007,2008,2009,2010,2011,2012,2013,2014,2015,2016,2017,2018,2019]
["Production wells, completed construction, units"]
["natural gas",248,156,204,143,151,118,223,212,93,38,73,64,116,114,176]
["crude oil",15,441,546,629,702,775,719,724,788,832,802,725,660,545,623]
["at UGSFs",36,41,45,8,14,16,17,17,43,22,27,13,4,9,15]
["Total",299,638,795,780,867,909,959,953,924,892,902,802,780,668,814]
["Production wells drilled, thousand m"]
["natural gas",327.39999999999998,267.10000000000002,314,375.7,358.2,441.5,476.8,367.7,239.7,125.6,153.19999999999999,227.2,240.8,304.39999999999998,400.8]
["crude oil",38.200000000000003,1468.9,1740.7,2080.6,2286.6999999999998,2602.1999999999998,2288.1,2566.6,3002.1,2948.5,3163,2735.8,"2 559,5",2202.6,2811.7]
["at UGSFs",31.6,30.1,37.799999999999997,17.600000000000001,11.9,20.3,22.9,24.2,36.700000000000003,27.6,47.5,23.7,13.6,19.399999999999999,14.2]
["Total",397.2,1766.1,2092.5,2473.9,2656.8,3064,2787.8,2958.5,3278.5,3101.7,3363.7,"2 986,7","2 813,9",2526.4,3226.7]
[]
["Production drilling of entities, investments in which are classified as joint operations"]
[null,"For the year ended 31 December"]
[null,2005,2006,2007,2008,2009,2010,2011,2012,2013,2014,2015,2016,2017,2018,2019]
["Oil production wells, \ncompleted construction, units","x","x","x","x","x","x","x",243,211,188,206,231,236,208,206]
["Oil producing wells drilled, thousand m","x","x","x","x","x","x","x",827,697,694,789,785,784,749,744]
[]
["Gazprom Group’s production capacity"]
["(excluding entities, investments in which are classified as joint operations)"]
[null,"As at 31 December"]
[null,2005,2006,2007,2008,2009,2010,2011,2012,2013,2014,2015,2016,2017,2018,2019]
["Fields in operation*, units",114,119,122,122,121,120,124]
["Fields in commercial development, units",null,null,null,null,null,null,null,118,122,126,135,136,136,138,144]
["Gas production wells, units",6941,7010,7154,7214,7310,7403,7504,7717,7744,7816,7881,7916,7945,7976,8061]
["including those in operation",6401,6513,6640,6723,6775,6806,6988,7226,7263,7293,7358,7441,"7 438",7418,7438]
["Oil production wells, units",5018,5486,5881,5932,6158,6464,6647,7296,7868,8218,9058,9316,7944,9106,"8 393"]
["including those in operation",4372,4948,5342,5444,5663,5941,6151,6738,7246,7604,8461,8681,"7 358",8489,7752]
["Comprehensive and preliminary gas treatment units, units",169,170,172,173,174,176,177,179,170,171,170,171,169,170,171]
["Booster compressor stations, units",44,44,45,45,47,48,49,49,49,52,53,58,60,62,64]
["Aggregate installed capacity of booster compressor stations, MW",4176.1000000000004,4176.1000000000004,4300.1000000000004,4460.1000000000004,4508.1000000000004,4572.1000000000004,4730.1000000000004,5015.2,5046.3999999999996,5265.4,5080.3,"5 669,8",5865.9,6135.3,6379.3]
["* For 2005–2011 includes fields that are in pilot production."]
[]
["Production capacity of entities, investments in which are classified as joint operations"]
[null,"As at 31 December"]
[null,2005,2006,2007,2008,2009,2010,2011,2012,2013,2014,2015,2016,2017,2018,2019]
["Fields in commercial development, units","x","x","x","x","x","x","x",34,35,39,41,42,41,38,39]
["Gas production wells, units","x","x","x","x","x","x","x",9,9,8,7,7,7,4,4]
["including those in operation","x","x","x","x","x","x","x",2,"–",1,3,3,1,4,4]
["Oil production wells, units","x","x","x","x","x","x","x",3439,3590,3635,3768,3733,3810,3866,3819]
["including those in operation","x","x","x","x","x","x","x",2927,3017,3086,3163,3379,3472,3534,3516]
[]
["Back to Contents"]

{"sheet":"Promising fields","index":16,"n_rows":71,"n_cols":5,"rows_kept":71,"cut":false,"hidden":false,"merged":[[68,0,68,4],[0,0,0,4],[1,0,1,4],[23,0,24,0],[23,1,24,1],[28,0,28,4],[30,0,30,4],[38,3,38,4],[40,1,41,1],[58,0,58,4],[60,0,60,4],[27,0,27,4],[57,0,57,4]]}
["Promising Fields"]
["Fields under development operated by Gazprom Group"]
["Field name","Description","Annual design capacity","Year of launch","Year of achieving design capacity"]
["Nadym-Pur-Taz area (Western Siberia)"]
["Nydinsky block of the\nMedvezhye field","Located within the Medvezhye field in the Pur District of the Yamal-Nenets Autonomous Area, Tyumen Region.","2.2 bcm of gas",2011,"2022–2024"]
["Urengoyskoye\n(Achimov deposits)","Located in the Purovsky District of the Yamal-Nenets\nAutonomous Area.\nDeposits have been divided into blocks to facilitate\nphased development."]
["Block 1",null,"9.6 bcm of gas and \n2.95 mm tonnes of unstable gas condensate ",2008,"2020–2023"]
["Block 2",null,"12.33 bcm of gas and\n3.36 mm tonnes of unstable gas condensate",2009,"2021–2024"]
["Blocks 4–5",null,"15.5 bcm of gas",2020,"2027–2030"]
["Oil rims of the Yen-Yakhinskoye and Pestsovoye fields, oil deposits of Zapadno-Tarkosalynskoye field*","Located in the Purovsky District of the Yamal-Nenets Autonomous Area.","1.8 mm tonnes\nof liquid\nhydrocarbons",2021,"2021–2022"]
["Achimov oil deposits of the Yamburgskoye field*","Located in the Taz and Nadym Districts of the Yamal-Nenets Autonomous Area.","8 mm tonnes of oil",2027,2028]
["Yamal Peninsula and adjacent offshore areas"]
["Bovanenkovskoye","The largest field on the Yamal Peninsula in terms of explored reserves; the field is located in the central part of the peninsula and is the best explored."]
["Cenomanian-Aptian deposits",null,"115 bcm of gas",2012,"2021\n(completion of\nwell commissioning\nto achieve\ndesign capacity)"]
["Neocomian-Jurassic deposits*",null,"25 bcm of gas and\n2.3 mm tonnes\nof liquid hydrocarbons","2025–2027","2030–2032"]
["Novoportovskoye","Located in the south-eastern corner of the Yamal Peninsula, where no infrastructure is available.","8.5 mm tonnes of oil",2016,2020]
["Volga Area"]
["Astrakhanskoye","Located in the Volga Delta; capable of yielding 50–60 bcm of gas per annum. Production is restricted to 12 bcm per annum for environmental concerns and expensive technology used.",null,1986]
["Volga-Urals Area"]
["Vostochny block of the Orenburg oil and gas condensate field","Located 10-20 km away from Orenburg in a region that benefits from well-developed infrastructure and close vicinity to distribution markets.","3.3 mm tonnes of oil",1994,2029]
["Continental shelf in Russia’s Arctic"]
["Prirazlomnoye","Located on the continental shelf of the Russian Federation in the Pechora Sea, \n55 km from the settlement of Varandey, \n240 km from the river port of Naryan-Mar (Pechora River) and 980 km away from the Murmansk sea port. The sea depth within the field area is only 17–20 metres.","4.2 mm tonnes of oil",2013,2024]
["Eastern Siberia and the Russian Far East"]
["Chayandinskoye","Located in the Lensk District of the Republic of Sakha (Yakutia).","25 bcm of gas",2019,2024]
[null,null,"1.9 mm tonnes of oil","2014\n(launch of pilot\nproduction)",2020]
["Continental shelf of the Russian Federation in the Okhotsk Sea"]
["Kirinskoye","Located on the continental shelf of the Russian Federation in the Okhotsk Sea, to the northeast of Sakhalin.\nField development is part of Sakhalin III Project.","5.5 bcm of gas",2014,"2023–2024"]
["* Operator — OOO Gazprom neft Zapolyar’ye under long-term risk-based operatorship agreements with PJSC Gazprom and its gas production subsidiaries."]
["Note. As at 31 December 2019. Timelines for commissioning and ramp-up may be adjusted subject to the energy market environment."]
[]
["Fields in exploration and prospective licence blocks of Gazprom Group"]
["Field\n(license block)","Description","Annual design capacity","Comissioning year","Design capacity year"]
["Yamal Peninsula and adjacent offshore areas"]
["Kharasaveyskoye","To be put in operation after the Bovanenkovskoye field achieves design capacity."]
["Cenomanian-Aptian deposits",null,"32 bcm of gas",2023,2025]
["Neocomian-Jurassic deposits*",null,"24.5 bcm of gas\n1.9 mm tonnes\nof liquid hydrocarbons",2026,2029]
["Kruzenshternskoye","Part of the Bovanenkovo group of fields.","33 bcm of gas",2028,"2032–2033"]
["Continental shelf in Russia’s Arctic"]
["Shtokmanovskoye","Located in the central part of the Barents Sea, northwest of the Novaya Zemlya archipelago and 650 km northeast of the city of Murmansk. Gas supplies are planned both through the Unified Gas Supply System and as LNG to remote markets.","71.7 bcm of gas expandable to\n95 bcm of gas","To be specified based on the Investment Case"]
["Ob and Taz Bays"]
["Kamennomysskoye-more","Located in the offshore area of the Ob Bay in the Yamal-Nenets Autonomous Area (Tyumen Region) and is a priority development area in offshore areas of the Ob and Taz Bays.","15.1 bcm of gas","2025–2027","2027–2029"]
["Severo-Kamennomysskoye",null,"14.5 bcm of gas","2027–2029","2032–2033"]
["Khanty-Mansi Autonomous Area — Yugra"]
["Alexander Zhagrin field","Located in the Kondinskiy District of the Khanty-Mansi Autonomous Area — \nYugra.","6.4 mm tonnes of oil",2020,2022]
["Nadym-Pur-Taz region \n(Western Siberia)"]
["Yuzhno-Novoportovskiy and Suroviy license blocks","The license blocks are adjacent to the Novoportovskoye field and the Yuzhno-Kamennomysskiy license block.","2.5 mm tonnes of oil",2026,2032]
["Tazovskoye","Located in the Tazovsky District of the Yamal-Nenets Autonomous Area.","2 mm tonnes of oil",2021,2023]
["Meretoyakhinskoye","Located in the Nadymsky District of the Yamal-Nenets Autonomous Area 135 km\n south-east of the town of Nadym.","2.1 mm tonnes of oil",2025,2027]
["Zapadno-Yubileynoye","Located in the Nadymsky District of the Yamal-Nenets Autonomous Area 100 km\nnorth-west of the town of Nadym.","21 bcm of gas and\n5 mm tonnes of oil",2026,2027]
["Gydan Peninsula"]
["Leskinskiy and\nPukhutsyakhsky blocks\n(Yenisei project)","Licensed blocks are located on the Gydan Peninsula, on the left bank of the Yenisei River. Leskinsky site belongs to the Taimyrskiy Dolgan-Nenetskiy District of the Krasnoyarsk Territory. The Pukhutsyakhskiy block is located in the Taz District of the Yamal-Nenets Autonomous Area.","19.9 mm tonnes of oil",2027,2037]
["Eastern Siberia and the Russian Far East"]
["Omorinskoye, Kamovskoye and Salairskoye fields within the Omorinskiy license block","Located within the Baikitskaya oil and gas bearing region of the Leno-Tungusskaya oil and gas bearing province in the Krasnoyarsk Territory.","2.2 mm tonnes of oil",2026,2032]
["Kovyktinskoye","Located in the Zhigalovsky and Kazachinsko-Lensky Districts of the Irkutsk Region","25 bcm of gas",2022,2025]
["Chonsky cluster (Ignjalinskoye, Vakunayskoye, Severo-Vakunayskoye, Tympuchikanskoye and Verkhnechonskoye fields)","Located in the Katangskiy District of the Irkutsk Region and the Lenskiy District of the Republic of Sakha (Yakutia), \n120-140 km east of the district centre, the village of Erbogachen.","2.2 mm tonnes of oil",2024,2030]
["Continental shelf of the Russian Federation in the Sea of Okhotsk"]
["Yuzhno-Kirinskoye","Located on the continental shelf of the Russian Federation in the Okhotsk Sea, to the northeast of Sakhalin. Field development is part of Sakhalin III Project.","21 bcm of gas","2023–2024","2029–2032"]
["* Operator — OOO Gazprom neft Zapolyar’ye under long-term risk-based operatorship agreements with PJSC Gazprom’s gas production subsidiaries."]
["Note. As at 31 December 2019. Timelines for commissioning and ramp-up may be adjusted subject to the energy market environment."]
[]
["Fields of joint ventures of Gazprom Group"]
["Field name","Description and partner","Annual design capacity","Year of comissioning","Year of design capacity"]
["Gydan Peninsula"]
["Vostochno-Messoyakhskoye","Located in the northern part of the Western Siberian oil and gas province in the south-west of the Gydan Peninsula; one of the largest fields by explored reserves.\n \nPartner: Rosneft.","6.0 mm tonnes of oil",2016,2022]
["Khanty-Mansi Autonomous Area — Yugra"]
["Ervier (Ouryinskoye) field","Located on the border of Khanty-Mansi Autonomous Area — Yugra and Sverdlovsk Region\n\nPartner: Repsol.","2.6 mm tonnes of oil",2024,2026]
["Eastern Siberia and the Russian Far East"]
["Kuyumbinskoye","Located in the Baikitsky Municipality of the Evenk Municipal District in the Krasnoyarsk Territory. Makes part of the Yurubcheno- Tokhomskaya oil and gas pool. The area is hard to access and has no all-season roads. \n \nPartner: Rosneft.","5.0 mm tonnes of oil",2018,2028]
["Note. As at 31 December 2019. Timelines for commissioning and ramp-up may be adjusted subject to the energy market environment."]
[]
["Back to Contents"]

{"sheet":"Explor. and production abroad","index":17,"n_rows":78,"n_cols":14,"rows_kept":78,"cut":false,"hidden":false,"merged":[[0,0,0,6],[62,0,62,13],[19,0,19,13],[1,0,1,9],[11,0,11,9],[2,1,2,13],[12,1,12,13],[9,0,9,13],[21,0,21,9],[22,1,22,13],[46,1,46,13],[46,0,47,0],[32,0,32,13],[34,0,34,9],[74,0,74,13],[75,0,75,13],[35,0,36,0],[35,1,35,13],[43,0,43,13],[65,0,66,0],[65,1,65,13],[41,0,41,13],[42,0,42,13],[45,0,45,9],[64,0,64,9]]}
["Geological Exploration and Production Abroad"]
["Key figures of Gazprom’s hydrocarbon geological exploration abroad"]
[null,"For the year ended 31 December"]
[null,2007,2008,2009,2010,2011,2012,2013,2014,2015,2016,2017,2018,2019]
["Exploration drilling, thousand m",14.2,32.1,30.7,21.8,21.8,24,18.100000000000001,17.600000000000001,28.3,9.6999999999999993,18.399999999999999,21.9,18.600000000000001]
["Exploration wells, completed construction, units","–",4,10,10,6,7,4,5,4,8,8,10,7]
["including producing wells","–","–",2,4,6,1,1,4,2,7,5,9,7]
["Seismic exploration 2D, thousand linear km",2.4,6.3,12.5,11.4,1.3,0.7,0.4,"–","–",1.5,"–","–","−"]
["Seismic exploration 3D, thousand square km",1.3,7.4,3.6,2.6,0.7,0.4,1.4,1.7,1.4,0.8,1.2,1.1000000000000001,0.7]
["Note. Consolidated figures of geological exploration in foreign countries include results of the projects where companies of Gazprom Group have control and participate as operators."]
[]
["Gazprom Group’s hydrocarbon production capacity abroad"]
[null,"As at 31 December"]
[null,null,null,null,null,2011,2012,2013,2014,2015,2016,2017,2018,2019]
["Production fields, units",null,null,null,null,50,50,51,47,53,47,48,47,48]
["Gas production wells, units",null,null,null,null,225,234,289,235,168,172,163,243,249]
["including those in operation",null,null,null,null,104,111,94,96,74,81,81,126,129]
["Oil production wells, units",null,null,null,null,900,903,863,904,963,931,946,887,908]
["including those in operation",null,null,null,null,603,623,543,623,661,681,737,734,757]
["Note. The data shows Group’s hydrocarbon production capacity in foreign countries for the respective periods provided by NIS (Serbia)."]
[]
["Gazprom Group oil and gas exploration drilling abroad"]
[null,"For the year ended 31 December"]
[null,null,null,null,null,null,2012,2013,2014,2015,2016,2017,2018,2019]
["Production wells, completed construction, units"]
["natural gas",null,null,null,null,null,2,1,3,"–",2,"–",4,2]
["crude oil",null,null,null,null,null,12,27,46,35,38,51,46,38]
["Total",null,null,null,null,null,14,28,49,35,40,51,50,40]
["Production wells drilled, thousand m"]
["natural gas",null,null,null,null,null,3,1.9,7.9,"–",1.6,2.1,5,2.8]
["crude oil",null,null,null,null,null,18.399999999999999,63.6,86,75,40.9,67.5,61.5,68.099999999999994]
["Total",null,null,null,null,null,21.4,65.5,93.9,75,42.5,69.599999999999994,66.5,70.900000000000006]
["Note. The data shows Group’s hydrocarbon production capacity in foreign countries for the respective periods provided by NIS (Serbia)."]
[]
["Gazprom Group hydrocarbon production abroad"]
[null,"For the year ended 31 December"]
[null,null,null,null,null,null,2012,2013,2014,2015,2016,2017,2018,2019]
["Natural gas*, mmcm",null,null,null,null,null,556,551,558,415,428,408,393,364]
["Associated gas, mmcm",null,null,null,null,null,null,null,null,158,133,115,96,101]
["Gas condensate, thousand tonnes",null,null,null,null,null,null,null,null,31,33,35,6,6]
["Oil**, thousand tonnes",null,null,null,null,null,1223,1255,1205,"1 086",986,933,910,888]
["* For 2012–2014, including associated gas production."]
["** For 2012–2014, including gas condensate production."]
["Note. The data shows the Group’s hydrocarbon production volumes in foreign countries for the respective periods provided by NIS (Serbia)."]
[]
["Hydrocarbon production abroad, major projects with Gazprom Group’s participation"]
["Field name","For the year ended 31 December"]
[null,null,null,null,null,null,2012,2013,2014,2015,2016,2017,2018,2019]
["Natural and associated gas, mmcm"]
["Wingate",null,null,null,null,null,742,394,622,877,686,436,300,189]
["Moc Tinh and Hai Thach",null,null,null,null,null,"–",331,1786,1884,2142,2099,2350,2193]
["Shakhpakthy",null,null,null,null,null,301,319,334,357,363,312,272,202]
["Incahuasi",null,null,null,null,null,"–","–","–","–",740,2519,2579,2608]
["Associated gas, mmcm"]
["Badra",null,null,null,null,null,"–","–","–",7,14,208,777,724]
["Gas condensate, thousand tonnes"]
["Wingate",null,null,null,null,null,5,2,4,5,3,3,2,2]
["Moc Tinh and Hai Thach",null,null,null,null,null,"–",59,366,436,573,469,397,349]
["Incahuasi",null,null,null,null,null,"–","–","–","–",75,270,280,290]
["Oil, thousand tonnes"]
["Badra",null,null,null,null,null,"–","–",309,1383,2575,3787,3980,2902]
["Sarkala",null,null,null,null,null,"–","–","–",219,193,370,935,1451]
["Note. Production volumes are given in total for the project, not specifying Gazprom Group’s share."]
[]
["Hydrocarbon production of Associates and Joint Ventures in hydrocarbon prospecting, exploration and production abroad"]
[null,"For the year ended 31 December"]
[null,null,null,null,null,null,2012,2013,2014,2015,2016,2017,2018,2019]
["Wintershall AG"]
["Oil, thousand tonnes",null,null,null,null,null,4115,2383,405.6,534,504,1528,"2 148",2392]
["Associated gas, mmcm",null,null,null,null,null,611,254,69.5,145,137,233,311,415]
["Wintershall Noordzee B.V.*"]
["Natural gas, mmcm",null,null,null,null,null,"x","x","x",259,1013,776,712,535]
["Gas condensate, thousand tonnes",null,null,null,null,null,"x","x","x",2,5,8,5,4]
["Oil, thousand tonnes",null,null,null,null,null,"x","x","x",7,1,17,52,58]
["* Data since Q4 2015"]
["Note. Production volumes are given in total for the entities, not specifying Gazprom Group’s share."]
[]
["Back to Contents"]

{"sheet":"Explor. projects abroad","index":18,"n_rows":32,"n_cols":8,"rows_kept":32,"cut":false,"hidden":false,"merged":[[29,0,29,4],[26,0,26,1],[10,0,10,4],[0,0,0,4],[5,0,6,0],[21,0,22,0],[16,4,17,4],[2,4,2,7],[3,4,3,7],[4,4,4,7],[5,4,5,7],[6,4,6,7],[7,4,7,7],[8,4,8,7],[9,4,9,7],[1,4,1,7],[27,5,27,8],[28,5,28,8],[15,0,17,0],[26,5,26,8],[12,0,12,4],[19,0,20,0],[23,0,23,7],[16,6,17,6],[16,7,17,7],[27,2,27,3],[28,2,28,3],[26,2,26,3],[25,0,25,4],[28,0,28,1],[27,0,27,1]]}
["Exploration and production projects of Gazprom Group abroad at the prospecting and exploration stage"]
["Country","Project name, purpose,\nand description","Project\nstart","The Group’s\noperator role","Terms of the Group’s\nparticipation"]
["Algeria","Hydrocarbon exploration and development at the El-Assel licence block located in the Berkine geological basin in the east of Algeria in the Sahara Desert",2009,"■","Implemented under an Agreement on joint exploration and production of hydrocarbons; Gazprom Group’s share: 49%.\nPartner: Algerian state oil and gas company Sonatrach.\nCustomer: Algerian National Agency for the Valorisation of Hydrocarbon Resources (ALNAFT)."]
["Bolivia","Hydrocarbon exploration and development at the Azero licence block",2013,"–","Implemented under a service contract for oil exploration and production services. Gazprom Group finances 50% of the project costs at the exploration stage. At the development stage, the Group will finance 22.5% of the project costs.\nPartners: Bolivian state oil and gas company YPFB, 55%; Total E&P Bolivia S.A. (operator), 22.5%."]
["UK","Exploration at the license\nblocks P1902 (block 44/23c) and\nP1903 (blocks 44/23d and 44/24c)\non the UK continental shelf.",2012,"–","Implemented under the Joint Operation Agreement.\nGazprom Group finances 20% of the project costs.\nPartners: Wintershall Noordzee B.V.* (operator) — 49.5%, XTO UK — 15.5%, Gas Union — 15.0%."]
["Vietnam","Hydrocarbon prospecting and exploration at Block 112 (incl. extension) in the South China Sea.",2000,"■","Implemented on the PSA terms. Gazprom Group finances 100% of the project costs at the exploration stage. At the development stage, the Group will finance 50% of the project costs.\nPartners: Petrovietnam, Petrovietnam Exploration & Production Corporation Operator: Vietgazprom joint operating company."]
[null,"Hydrocarbon prospecting and exploration at Blocks 129–132 in the South China Sea.",2008,"■","Implemented on the PSA terms. Gazprom Group finances 100% of the project costs at the exploration stage. At the development stage, the Group will finance 50% of the project costs.\nPartners: Petrovietnam, Petrovietnam Exploration & Production Corporation\nOperator: Vietgazprom joint operating company."]
["Iraq","Hydrocarbon exploration and development at the Shakal block in Kurdistan",2012,"■","Implemented on the PSA terms. Gazprom Group finances 100% of the project costs.\nAt the development stage, the Group will finance 80% of the project costs."]
["Kazakhstan and Russia","Development of the Tsentralnoye cross-border offshore field in the Caspian Sea (a joint project between the Russian Federation and the Republic of Kazakhstan). The field was discovered in 2008 as part of a prospecting and exploration project at the Tsentralnaya geological structure, which involved the Group",2013,"–","Implemented in line with the Agreement on the demarcation of the seabed in the northern part of the Caspian Sea for the purpose of exercising sovereign rights to use mineral resources. The project involves \nOOO TsentrCaspNeftegaz (established by PJSC LUKOIL and PJSC Gazprom on parity terms) from the Russian side, and JSC National Company KazMunayGas from the Kazakhstan side."]
["Libya","Hydrocarbon exploration and development at Licence Blocks 19 (offshore Mediterranean) and 64 (onshore, in the northern part of the Gadames oil and gas bearing basin).",2007,"■","Implemented under exploration and production sharing agreements.\nPartner — Libyan National Oil Corporation.\nGazprom Group finances 100% of the project costs at the exploration stage."]
["* As at 31 December 2019, Gazprom Group’s share in the company was 50%."]
[]
["Exploration and production projects of Gazprom Group abroad at the development and production stage"]
["Country","Project name, purpose,\nand description","Project start","The Group’s\noperator role","Exploration\nresults","Partners’ stakes\nin the project","Year\nof launch","Annual design\ncapacity"]
["Bolivia","Hydrocarbon exploration and development at the Ipati and Aquio licence blocks under a Farmout Agreement\nAccording to the Bolivian laws, all hydrocarbons that will be produced belong to YPFB, and project participants will get due remuneration.\nOperator: Total EP Bolivie S.A.",2010,"–","The Incahuasi field at the Ipati and\nAquio blocks was discovered in 2011.","Gazprom Group, 20%;\nTotal EP Bolivie S.A., 50%;\nTecPetrol, 20%;\nYPFB Chako, 10%",2016,"6.8 bcm\n(Phase 1\nof CGTU)\n"]
["UK and the Netherlands","Construction, production, and followup exploration at the UK’s offshore Wingate gas field (licence blocks P1239 and P1733) under the Joint Operation Agreement.\nOperator — Wintershall Noordzee B.V.*",2008,"–","Gazprom Group joined\nthe project after the\nfield had been discovered\nand was being\nprepared for the development.","Gazprom Group — 20%,\nWintershall\nNoordzee B.V. — 64.5%,\nXTO UK — 15.5%.",2011,"0.3 bcm of gas"]
[null,"Development and Production at the licence block D12b on the Dutch continental shelf.\nOperator — Wintershall Noordzee B.V.*",2011,"–","A prospecting well was drilled at the Sillimanite cross-border prospect in 2015. The Sillimanite cross-border field was discovered.","Implemented under the Joint Operation Agreement.\nGazprom Group finances 17.591% of the project costs.\nPartners: Wintershall Noordzee B.V.* (operator) — 30.129%, EBN B.V. — 40.0%, ONE — 7.037%, GDF SUEZ E&P NEDERLAND B.V. — 5.243%.",2020,"0.7 bcm of gas"]
[null,"Development and production at the licence block 44/19a on the UK’s continental shelf.\nOperator — Wintershall Noordzee B.V.*",2014,"–",null,"Implemented under the Joint Operation Agreement.\nGazprom Group finances 29.319% of the project costs.\nPartners: Wintershall Noordzee B.V.* (operator) — 50.214%, ONE U.K. — 11.728%, GDF SUEZ E&P UK Ltd. — 8.739%.\nThe participants in development and production projects in license areas D12b and 44/19a signed an agreement on field unitization, Gazprom Group's share is 19.9%."]
["Vietnam","Hydrocarbon production at the Moc Tinh and Hai Thach fields in the South China Sea under the PSA terms.\nOperator — Bien Dong operating company",2012,"–","Gazprom Group joined the project after\nthe fields had been discovered and were\nbeing prepared for development.","Gazprom Group, 49%;\nPetrovietnam, 51%",2013,"2.0 bcm\nof gas"]
["Iraq","Development of the Badrah field under a Service Contract.\nOperator: Gazprom Neft Badra B.V.\nThe project is expected to span 20 years, with potential extension for another five years.",2010,"■","Gazprom Group joined the project after\nthe field had been discovered and was\nbeing prepared for development.","Gazprom Group, 30%;\nKOGAS, 22.5%;\nPETRONAS, 15%;\nTPAO, 7.5%;\nIraqi Government (represented by Oil Exploration Company), 25%",2014,"5.7 mm tonnes of oil"]
[null,"Hydrocarbon production at the Garmian block on the PSA terms.\nOperator: Gazprom Neft Middle East B.V.",2012,"■","The Sarkala field has been discovered\nwithin the boundaries of the block.","Gazprom Group, 40%;\nWesternZagros, 40%;\nKurdistan Regional\nGovernment, 20%",2015,"1.45 mm tonnes of oil"]
["Uzbekistan","Refurbishment of the infrastructure at the Shakhpakhty field in the Ustyurt region of the Republic of Uzbekistan, and follow-up development of remaining gas reserves on the PSA terms are underway.\nThe costs are compensated by natural gas supplies. Gas remaining after costs are compensated is distributed pro rata between the parties to the PSA.\nOperator: OOO Zarubezhneftegaz — GPD Central Asia (established by Gas Project Development Central Asia AG and AO Gazprom Zarubezhneftegaz on a parity basis)",2004,"■","х","A consortium representing Gazprom Group and consisting of its subsidiary AO Gazprom Zarubezhneftegaz (5%) and joint venture Gas Project Development Central Asia AG (95%), 50%;\nAO Uzbekneftegaz, 50%.","х","х"]
[null,"Hydrocarbon production at the Djel field in the Republic of Uzbekistan under a PSA. Operator — OOO Operating Company Zarubezhneftegaz — Central Asia.",2018,"■","The Djel field at the Shakhpakhty licence block was discovered in 2009 by exploration carried out as part of the Company’s licence obligations.","Gazprom Group — 50%,\nAO Uzbekneftegaz — 50%.",2024,"0.15 bcm of gas\n(first stage)\n0.3 bcm of gas\n(full development)"]
["* As at 31 December 2019, Gazprom Group’s share in the company was 50%."]
[]
["Prospecting, exploration and production projects of Associates and Joint Ventures abroad"]
["Company",null,"Countries of operation",null,"Gazprom Group’s interest","Overview and results"]
["Wintershall AG",null,"Libya",null,"49% equity share acquired by the Group in December 2007 as a result of the asset swap agreement with BASF AG (from 2008 — BASF SE).","The company is a party to the exploration and production\nsharing agreement for blocks 91 and 107 (previously concessions\nC96 and C97 respectively). Six fields are in production."]
["Wintershall Noordzee B.V. ",null,"The Netherlands,\nUnited Kingdom,\nDenmark\n",null,"50% equity share acquired by the Group in 2015 as a result of the asset swap agreement with BASF SE.","The company owns varied level stakes in 48 licences\nin the British, Danish, and Dutch sectors of the North Sea.\nA number of oil and gas fields are discovered within these\nlicence areas.\nThe key producing assets include K18-Golf, Wingate,\nQ1-C, Q1-D and Sillimanite gas fields. In 2019, industrial\nproduction of oil from the Ravn field continued in the\nDanish sector of the North Sea."]
["Note. As at 31 December 2019."]
[]
["Back to Contents"]

{"sheet":"Transportation","index":19,"n_rows":101,"n_cols":16,"rows_kept":101,"cut":false,"hidden":false,"merged":[[0,0,0,11],[1,0,1,11],[98,0,98,11],[38,0,39,0],[77,1,77,15],[59,1,59,15],[38,1,38,15],[26,1,26,15],[17,1,17,15],[35,0,35,15],[97,0,97,11],[3,1,3,15],[11,1,11,15],[23,0,23,15],[68,0,68,2],[2,0,2,11],[16,0,16,11],[10,0,10,11],[66,1,66,15],[76,0,76,11],[65,0,65,11],[58,0,58,11],[37,0,37,11],[25,0,25,11]]}
["Gas Transportation and Underground Storage"]
["Gas Transportation"]
["Development and overhaul of the GTS in Russia"]
[null,"For the year ended 31 December"]
[null,2005,2006,2007,2008,2009,2010,2011,2012,2013,2014,2015,2016,2017,2018,2019]
["New gas trunk pipelines and pipeline branches put into operation, km",1402,1526,1157,1381,865,{"$f":"ROUND(1338.6,0)","v":1339},2470,3213,703,1277,933,771,640,529,2279]
["Reconstruction of trunk pipelines, km",null,39,185,102,551,380,131,132,214,200,169,211,100,362,"–"]
["Capital repairs, km",2166.8000000000002,2809,2697,2756.3,2383.6999999999998,2427.3000000000002,2436.6,2487,1819,1581,1441,823,810,771,782]
["Number of technical faults \nper 1 thousand km",0.14000000000000001,0.12,0.11,0.13,0.09,0.04,7.0000000000000007E-2,0.09,0.05,0.03,0.05,0.03,0.02,0.05,0.02]
[]
["Diagnostics of the GTS in Russia, thousand km"]
[null,"For the year ended 31 December"]
[null,2005,2006,2007,2008,2009,2010,2011,2012,2013,2014,2015,2016,2017,2018,2019]
["Inline inspections",17.3,16.899999999999999,17.2,19.8,17.7,21.9,21.7,22.2,22.6,23.5,19.899999999999999,23.9,22.1,25.1,28.9]
["Corrosion inspections",23.2,29.9,20.5,25.6,17,28.1,26.1,23,21.5,18.399999999999999,17.899999999999999,17.3,18,14.9,21.6]
[]
["Major technical characteristics of Gazprom Group’s gas transportation assets in Russia"]
[null,"As at 31 December"]
[null,2005,2006,2007,2008,2009,2010,2011,2012,2013,2014,2015,2016,2017,2018,2019]
["Length of gas trunk pipelines \nand pipeline branches\nin single-lane measuring*, thousand km",155,156.9,158.19999999999999,159.5,160.4,161.69999999999999,164.7,168.3,168.9,170.7,171.2,171.8,172.1,172.6,175.2]
["Linear compressor stations, units",210,217,218,214,215,215,211,222,247,250,250,253,254,254,254]
["Gas pumping units (GPUs), units",3587,3629,3641,3669,3675,3659,3630,3738,3820,3825,3829,3852,3844,3812,"3 788"]
["GPUs installed capacity, thousand MW",40.200000000000003,41,41.4,41.6,42,42.1,41.7,43.9,45.9,46.1,46.2,46.7,46.7,47.1,46.8]
["* Since 2013, total length of trunk pipelines includes length of technological branches."]
[]
["Breakdown of Gazprom Group’s trunk pipelines and pipeline branches, including technological jumpers, by operating life, thousand km"]
[null,"As at 31 December"]
[null,null,null,null,null,null,2010,2011,2012,2013,2014,2015,2016,2017,2018,2019]
["Up to 10 years",null,null,null,null,null,17.2,19.600000000000001,22.2,21.1,20.6,19.899999999999999,17.3,17.3,16.7,17.5]
["from 11 to 20 years",null,null,null,null,null,25,21.8,20.399999999999999,20,20.7,19.100000000000001,15.8,16.2,15.7,15.5]
["from 21 to 30 years",null,null,null,null,null,70.900000000000006,64.599999999999994,61.7,56.5,50.6,47.3,40.9,40.9,34.799999999999997,35.299999999999997]
["from 31 to 40 years",null,null,null,null,null,23.8,31.8,36.799999999999997,41.7,46.6,49.2,55.2,55.2,59.1,60]
["from 41 to 50 years",null,null,null,null,null,19.3,19.600000000000001,18.8,19.7,20.6,23.3,24.9,24.8,26.3,26.7]
["Over 50 years",null,null,null,null,null,5.5,7.3,8.4,9.9,11.6,12.4,17.7,17.7,20,20.2]
["Total",null,null,null,null,null,161.69999999999999,164.7,168.3,168.9,170.7,171.2,171.8,172.1,172.6,175.2]
["* Starting from 31 December 2013, length is given including technological jumpers."]
[]
["Gas received into and distributed from Gazprom’s GTS in Russia, bcm"]
[null,"For the year ended 31 December"]
[null,2005,2006,2007,2008,2009,2010,2011,2012,2013,2014,2015,2016,2017,2018,2019]
["Injections into GTS"]
["Gas inflow to GTS, including:",646.9,660.9,654.79999999999995,669.2,552.4,614.1,630.9,613.70000000000005,621,588.70000000000005,574.21,573.79999999999995,623.1,638.71,635.6]
["Central Asian gas",54.6,57,59.9,61.4,35.700000000000003,35.299999999999997,31.8,31.7,29.3,26.4,20.04,18.04,20.77,17.68,21.87]
["Azerbaijanian gas","–","–","–","–","–",0.8,1.5,1.6,1.4,0.2,"–","–","–","–","–"]
["Gas withdrawn from UGSFs \nin Russia and Latvia",42.8,48.2,41.7,36.1,30,40.799999999999997,47.1,44.3,32.700000000000003,32.700000000000003,24.27,44.94,45.69,51.99,40.54]
["Decrease of amount of gas stored in GTS",10,8.6999999999999993,10.199999999999999,9,7.3,6.3,5.2,8.1999999999999993,5.7,6.1,4.09,3.85,3.3,2.37,2.82]
["Total",699.7,717.8,706.7,714.3,589.70000000000005,661.2,683.2,666.2,659.4,627.5,602.57000000000005,622.59,672.09,693.07,678.96]
["Distribution from GTS"]
["Supplies inside Russia, including:",339.8,352,356.4,352.8,335.6,354.9,365.6,362.3,354.6,356.5,342.32,351.68,354,364.74,357.7]
["Central Asian gas",0.1,0.1,0.1,0.1,0.1,0.1,0.1,0,0,0,0.03,0.03,0.03,0.02,"–"]
["Supplies outside Russia, including:",251.2,254.7,247.3,251.1,195.6,209.3,217.7,209.3,220.2,196.2,196.75,209.44,232.37,234.75,233.87]
["Central Asian gas",54.5,56.8,59.7,61.3,35.6,35.200000000000003,31.8,31.6,29.3,26.4,20.010000000000002,18.010000000000002,20.74,17.66,21.87]
["Azerbaijanian gas","–","–","–","–","–",0.8,1.5,1.6,1.4,0.2,"–","–","–","–","–"]
["Gas pumped into UGSFs in Russia",46.3,50.3,43,51.6,15.7,47.7,48.2,44.1,38.4,35.1,27.08,24.65,44.18,49.44,45.02]
["Technical needs of GTS and UGSFs",51.7,52,49.5,49.6,36.299999999999997,43.6,45.8,40.9,40.6,33.200000000000003,32.28,32.29,37.799999999999997,40.549999999999997,38.4]
["Increase of amount of gas stored in GTS",10.7,8.8000000000000007,10.5,9.1999999999999993,6.5,5.7,5.9,9.6,5.6,6.5,4.1399999999999997,4.53,3.74,3.59,3.97]
["Total",699.7,717.8,706.7,714.3,589.70000000000005,661.2,683.2,666.2,659.4,627.5,602.57000000000005,622.59,672.09,693.07,678.96]
[]
["Gas transportation volumes of Nord Stream, Blue Stream and Power of Siberia pipelines, bcm"]
[null,"For the year ended 31 December"]
[null,null,null,null,null,null,null,2011,2012,2013,2014,2015,2016,2017,2018,2019]
["Power of Siberia pipeline",null,null,null,null,null,null,"x","x","x","x","x","x","x","x",0.33]
["Nord Stream pipeline \n(through Portovaya CS)",null,null,null,null,null,null,0.86,11.81,23.78,35.549999999999997,39.11,43.79,50.98,58.71,58.5]
["Blue Stream pipeline \n(through Beregovaya CS)",null,null,null,null,null,null,13.97,14.66,13.66,14.42,15.68,13.06,15.89,13.25,11.1]
[]
["Gas transportation services provided to PJSC Gazprom in neighbouring countries, bcm"]
[null,"For the year ended 31 December"]
[null,null,null,null,null,null,null,null,null,null,null,2015,2016,2017,2018,2019]
["Through the Imatra gas metering station (for supply to Finland)",null,null,null,null,null,null,null,null,null,null,2.76,2.5299999999999998,2.36,2.62,2.46]
["Through Ukraine",null,null,null,null,null,null,null,null,null,null,67.08,82.2,93.46,86.78,89.59]
["Through Lithuania",null,null,null,null,null,null,null,null,null,null,2.0699999999999998,2.21,2.4300000000000002,2.63,2.4500000000000002]
["Though Latvia",null,null,null,null,null,null,null,null,null,null,1.34,0.42,0.06,0.16,0.11]
["Through Estonia",null,null,null,null,null,null,null,null,null,null,2.4,1.72,1.24,1.44,1.51]
["Through Moldova",null,null,null,null,null,null,null,null,null,null,16.72,18.46,20.22,18.07,10.23]
["Through Kazakhstan",null,null,null,null,null,null,null,null,null,null,41.77,27.67,32.69,33.229999999999997,21.64]
[]
["Major technical characteristics of gas transportation assets of Gazprom Group’s subsidiaries abroad"]
[null,"For the year ended and as at 31 December"]
[null,null,null,null,null,null,null,2011,2012,2013,2014,2015,2016,2017,2018,2019]
["Belarus\n(Gas transportation system of \nOAO Gazprom transgaz Belarus and a part of\nYamal — Europe gas pipeline on the territory of Belarus)"]
["Length*, thousand km",null,null,null,null,null,null,7.9,7.9,7.9,7.9,7.9,7.9,7.9,7.9,7.9]
["Compressor stations, units",null,null,null,null,null,null,10,10,10,10,10,10,10,10,10]
["including:"]
["Gas transportation system of\nOAO Gazprom transgaz Belarus",null,null,null,null,null,null,5,5,5,5,5,5,5,5,5]
["part of Yamal — Europe gas pipeline on the territory of Belarus",null,null,null,null,null,null,5,5,5,5,5,5,5,5,5]
["Gas inflow to gas transportation system, bcm",null,null,null,null,null,null,64.3,64.5,69.099999999999994,65.2,64.2,60.33,61.17,62.59,60.78]
["including transit",null,null,null,null,null,null,44.3,44.3,48.8,45.1,45.41,41.69,42.16,42.26,40.51]
["Armenia\n(ZAO Gazprom Armenia)"]
["Length*, thousand km",null,null,null,null,null,null,1.9,1.9,1.8,1.7,1.7,1.7,1.7,1.7,1.7]
["Compressor stations, units",null,null,null,null,null,null,"–","–","–","–","–","–","–","–","–"]
["Gas inflow to gas transportation system,\nbcm",null,null,null,null,null,null,2.1,2.5,2.4,2.5,2.29,2.2400000000000002,2.38,2.46,2.5499999999999998]
["including transit",null,null,null,null,null,null,"–","–","–","–","–","–","–","–","–"]
["Kyrgyzstan\n(OsOO Gazprom Kyrgyzstan**)"]
["Length*, thousand km",null,null,null,null,null,null,"x","x","x",0.7,0.7,0.7,0.8,0.8,0.8]
["Compressor stations, units",null,null,null,null,null,null,"x","x","x",1,1,1,1,1,1]
["Gas inflow to gas transportation system,\nbcm",null,null,null,null,null,null,"x","x","x",4.3,4.66,4.5199999999999996,6.64,6.35,6.79]
["including transit",null,null,null,null,null,null,"x","x","x",4,4.4000000000000004,4.25,6.36,6.03,6.49]
["* In single-line measuring."]
["** Figures provided since the year when control was taken over by the Group."]
[]
["Back to Contents"]

{"sheet":"Gas transportation projects","index":20,"n_rows":35,"n_cols":6,"rows_kept":35,"cut":false,"hidden":false,"merged":[[31,0,31,5],[32,0,32,5],[0,0,0,5],[1,4,1,5],[3,4,3,5],[24,1,26,1],[24,5,26,5],[15,0,15,5],[16,0,17,0],[16,2,16,5],[16,1,17,1]]}
["Main existing PJSC Gazprom’s export gas transportation routes"]
["Gas\npipeline","Annual design\ncapacity, bcm","Length,\nkm","Pipe\ndiameter,\nmm","Countries which and/or the territorial waters\nof which the pipeline passes"]
["Yamal — Europe",32.9,"More than 2,000",1420,"Russia, Belarus, Poland, Germany"]
["Nord Stream",55,1224,1220,"Territorial waters of Russia, Denmark, Germany\nExclusive economic zones of Russia, Finland, Sweden, Denmark,\nGermany"]
["Urengoy — Pomary — \nUzhgorod*",32,4451,1420,"Russia, Ukraine"]
["Soyuz*",26,2750,1420,"Russia, Kazakhstan, Ukraine"]
["Progress*",28.5,3473,1420,"Russia, Ukraine"]
["Transbalkanskiy*",20,2750,"800 – 1,200","Ukraine, Romania, Bulgaria, Turkey"]
["Blue Stream\n(offshore part)",16,"Two pipeline strings\n382 km and\n389 km long",600,"Russia, Turkey"]
["Turkstream\n(offshore part)**",31.5,"Two pipeline strings\n937 km and\n939 km long",813,"Russia, Turkey"]
["Power of Siberia**","Up to 48","2,250.9\n(Chayandinskoye\nfield – China’s border\nsection)",1420,"Russia"]
["* Gas pipelines of the Ukrainian corridor."]
["** Comissioned in 2019."]
["Note. As at 31 December 2019."]
[]
["Gazprom Group’s major gas transportation projects"]
["Name","Purpose","Project highlights"]
[null,null,"Length","Number / total\ncapacity of compressor\nstations","Annual\ncapacity","Year of comissioning"]
["Gryazovets — Vyborg\npipeline loopings\nto the second line on\nGryasovets — Volkhov\nsection (expansion)","Additional gas supplies to consumers in St. Petersburg and the Leningrad Region","217.15 km","–","7.0 bcm","2017–\n2020"]
["Nord Stream 2","Gas supplies to consumers in Western and Central Europe","Two pipeline\nstrings\nc. 1,235 km long","–","55 bcm","2020*"]
["Trunk gas pipeline\n(interconnector)\nBulgaria’s border —\nHungary’s border","Gas supplies to Eastern Europe\nconsumers from the TurkStream\npipeline","402 km","1 CS / 24 MW","12.8 bcm of gas","2020–2021"]
["Murmansk — Volkhov","Gas transportation from the Shtokmanovskoye field to the Russian UGSS","C. 1,365 km\n(will be updated\nfollowing the\nproject design\nresults)","Up to 10 CS /\n1,225 MW\n(will be updated\nfollowing the project\ndesign results)","Up to 46 bcm\n(Subject to the Shtokmanovskoye field development option)","Construction and commissioning will be scheduled after the\ninvestment decision is made on the Shtokmanovskoye field."]
["Bovanenkovo — Ukhta 2","Gas transportation from the Yamal\nPeninsula fields","1 264,45 km","9 compressor\nstations /\n830 MW","57.5 bcm","2014–2021"]
["Ukhta — Torzhok 2","Additional gas supplies to Russia’s North-West to expand the domestic gas infrastructure and ensure export supplies via Nord Stream 2","970 km","7 compressor\nstations /\n625 MW","45 bcm","2014–2020"]
["Power of Siberia","Gas supplies from the Chayandinskoye oil and gas condensate field and the Kovyktinskoye gas condensate field to the gas infrastructure of the Far Eastern Federal District, and gas exports to China market","3 053,9 km","9 CS / 1,250 MW","Up to 48 bcm","Phased commissioning in accordance with the obligations under the natural gas sale and purchase agreement."]
["section Chayandinskoye field — China’s border",null,"2 250,9 km","8 CS / 1,186 MW","Up to 48 bcm"]
["section Kovyktinskoye field — Chayandinskoye field",null,"803 km","1 CS / 64 MW","24 bcm\n(starting from 2025)\n"]
["Expansion of UGSS\ntransportation\ncapacity in Northwest\nRussia, Gryazovets —\nCS Slavyanskaya\nsection","Additional gas supplies to Russia’s North-West and export supplies via the Nord Stream 2 pipeline","1 203,5 km","7 CS / 967 MW","58.4 bcm\n(stages 1–3), including\nup to 55 bcm of gas\nsupplies to the Nord\nStream 2 gas pipeline","Phased\ncomissioning\nstarting in 2018"]
["Sakhalin — Khabarovsk —\nVladivostok\n(second launch complex)","Additional gas supplies to consumers in the Primorye and Khabarovsk Territories, as well as export supplies","352,9 km","4 CS / 272 MW","C. 22 bcm\nto achieve\nfull capacity\n(to be adjusted\nbased on design\nstage results)","Phased\ncommissioning\nstarting from\n2021"]
["Bovanenkovo — Ukhta 3","Gas transportation from the Yamal Peninsula fields","C. 1,260 km\n(will be updated\nfollowing the\nproject design\nresults)","10 CS / 1,486 MW\n(will be updated\nfollowing the project\ndesign results)","C. 60 bcm","Phased\ncommissioning\nstarting from\n2023"]
["Ukhta — Torzhok 3","Additional gas supplies to northwestern Russia to expand the gas infrastructure to domestic consumers and support export supplies","C. 972 km\n(will be updated\nfollowing the\nproject design\nresults)","6 compressor\nshops / 708 MW\n(will be updated\nfollowing the project\ndesign results)","C. 45 bcm","Phased\ncommissioning\nstarting from\n2023"]
["* Data as at 31 December 2019. Various alternative options are being explored to complete the construction of the pipeline and put it into operation."]
["Note. As at 31 December 2019. Timelines for commissioning and ramp-up may be adjusted subject to the energy market environment."]
[]
["Back to Contents"]

{"sheet":"Gas storage","index":21,"n_rows":69,"n_cols":16150,"rows_kept":69,"cut":false,"hidden":false,"merged":[[0,0,0,6],[1,0,1,6],[8,0,8,6],[27,0,27,6],[66,0,66,11],[2,1,2,15],[9,1,9,15],[17,1,17,15],[46,0,46,15],[28,1,28,15],[47,1,47,15],[65,0,65,11]]}
["Underground Gas Storage"]
["Gazprom’s UGSFs in Russia"]
[null,"As at 31 December"]
[null,2005,2006,2007,2008,2009,2010,2011,2012,2013,2014,2015,2016,2017,2018,2019]
["Number of UGSFs, units",24,25,25,25,25,25,25,25,26,26,26,26,26,27,27]
["Total active capacity, bcm",64.25,64.650000000000006,64.94,65.2,65.2,65.41,66.7,68.16,70.41,71.099999999999994,73.56,73.62,74.930000000000007,75.010000000000005,75.010000000000005]
["Number of productive wells at UGSFs, units",2509,2588,2618,2615,2601,2564,2602,2621,2689,2685,2686,2681,2694,2705,2711]
[]
["Gas storage in Russia"]
[null,"Injection season"]
[null,2005,2006,2007,2008,2009,2010,2011,2012,2013,2014,2015,2016,2017,2018,2019]
["Gas injection into UGSFs, mmcm"]
["Q1","–","–",1074.8,107.1,161.4,{"$f":"ROUND(866.627,1)","v":866.6},"–",357.6,55.7,189.4,"–","–",23.2,99.8,635.70000000000005]
["Q2",19513.3,21189.200000000001,21295.599999999999,24370.5,3075,{"$f":"ROUND(24097.694,1)","v":24097.7},21291.8,23793.599999999999,21407.9,14963.8,10158.4,8468.7999999999993,17443.900000000001,23418.6,21177.3]
["Q3",22416.6,25659.5,19766.099999999999,24020.400000000001,10116.9,{"$f":"ROUND(20680.963,1)","v":20681},24248.5,18006.8,13784.8,16790.099999999999,14498.1,14209.2,24434.7,23616.1,21411.4]
["Q4",4385.1000000000004,3500.8,859.5,3150.4,2319.1,{"$f":"ROUND(2085.394,1)","v":2085.4},2657.2,1938.7,3120.1,3191.2,2425.3000000000002,1973.1,2275.4,2349.9,1816.4]
["Total for the season",46315,{"$f":"SUM(C13:C16)","v":50349.5},{"$f":"SUM(D13:D16)","v":42996},{"$f":"SUM(E13:E16)","v":51648.4},{"$f":"SUM(F13:F16)","v":15672.4},{"$f":"SUM(G13:G16)","v":47730.700000000004},48197.5,44096.7,38368.5,35134.5,27081.8,24651.1,44177.2,49484.4,45040.800000000003]
[null,"Withdrawal season"]
[null,"2005/2006","2006/2007","2007/2008","2008/2009","2009/2010","2010/2011","2011/2012","2012/2013","2013/2014","2014/2015","2015/2016","2016/2017","2017/2018","2018/2019","2019/2020"]
["Gas withdrawal from UGSFs, mmcm"]
["Q3",185.7,4.0999999999999996,89.7,107.1,155.80000000000001,135.1,300,143.9,63.2,41.9,92.8,114.2,164.4,99.8,450.5]
["Q4",12873.2,12743.4,21688.7,7634.2,18980.5,14428.8,13664.6,14418.3,9777,8262.5,5172.1000000000004,18834.599999999999,17117.2,20415.599999999999,15874.4]
["Q1 of the next year",34936,19763.599999999999,28347.1,8653.9,26176.9,31740.7,29258.1,21815.7,21662.3,16353.2,24653.1,26175.1,"31 036,3",23702.9,15175.8]
["Q2 of the next year",518.1,116.5,18.5,2234,48.5,1366.2,481.9,1091.9000000000001,2714.6,2653.2,1234.2,2022.8,430.6,513.4,1107.5]
["Total for the season",48513,{"$f":"SUM(C21:C24)","v":32627.599999999999},{"$f":"SUM(D21:D24)","v":50144},{"$f":"SUM(E21:E24)","v":18629.2},{"$f":"SUM(F21:F24)","v":45361.7},{"$f":"SUM(G21:G24)","v":47670.799999999996},43704.5,37469.800000000003,34217.1,27310.799999999999,31152.2,47146.7,48748.5,44731.7,32608.2]
["Maximum potential daily output during gas withdrawal season, mmcm per day",568,600,608,620,620,620,647.70000000000005,671.1,727.8,770.4,789.9,801.3,805.3,812.5,843.3]
[]
["Gazprom’s gas injection into and withdrawal from UGSFs abroad, mmcm"]
[null,"Injection season, Q1–Q4"]
[null,2005,2006,2007,2008,2009,2010,2011,2012,2013,2014,2015,2016,2017,2018,2019]
["Gas injection into UGSFs abroad"]
["FSU countries"]
["Total injection (FSU countries)",1550.9,1689.9,222.3,1389.1,658.1,1685.6,2338.6,2667.7,2494.6999999999998,2938.3,2507.3000000000002,2144.3000000000002,"1 274,9",1227.8,956.5]
["Far abroad countries*"]
["Austria",440.4,449,944.8,858.6,474.1,{"$f":"ROUND(580.758,1)","v":580.79999999999995},1093.7,1407.1,1472,1303.5,709.8,683.9,2222.5,1527.5,2124.5]
["Great Britain",76.8,294.39999999999998,414.5,528.9,225.8,{"$f":"ROUND(233.672,1)","v":233.7},225.2,224.3,226.5,224,224.4,"–","–","–","–"]
["Hungary ","–","–","–","–","–","–","–","–","–",699.9,"–","–",898.4,290.2,1003]
["Germany ",374.9,1142.7,1111,1384.8,583.6,{"$f":"ROUND(705.293,1)","v":705.3},155.19999999999999,2149.5,1464.2,886.1,797.2,654.1,1840,2072.5,3639.9]
["The Netherlands","–","–","–","–",328,{"$f":"ROUND(853.78,1)","v":853.8},1582.6,1276.7,617.29999999999995,1313.1,1176.9000000000001,1195,1782,1558.1,283.8]
["Serbia","–","–","–","–","–","–",279.39999999999998,336.2,93.5,118.4,"–","–",12.6,51.1,58.6]
["Slovakia","–","–","–","–","–","–","–","–","–","–","–","–",738,283.60000000000002,1112.5999999999999]
["France","–","–","–",273.89999999999998,250,{"$f":"ROUND(298.162,1)","v":298.2},"–","–","–","–","–","–","–","–","–"]
["Czech Republic","–","–","–","–","–","–","–","–","–","–","–",105.3,190.8,393.8,26.8]
["Short-term contracts for storage in European UGSFs","–","–","–","–","–","–","–","–","–","–","–","–",909.9,412.9,"–"]
["Total injection (far abroad countries)",{"$f":"SUM(B35:B43)","v":892.09999999999991},1886.1,2470.3000000000002,3046.2000000000003,1861.5,2671.7999999999997,3336.1,5393.7999999999993,3873.5,4545,2908.3,{"$f":"SUM(M35:M44)","v":2638.3},"8 594,2",6589.7,8249.2000000000007]
["Total for the season",2443,3575.9999999999995,2692.6,4435.2999999999993,2519.6000000000004,4357.3999999999996,5674.7,8061.5,6368.2,7483.3,5415.6,{"$f":"M45+M33","v":4782.6000000000004},9869.1,7817.5,9205.7000000000007]
["* Gas withdrawal of Gazprom group for contracts of OOO Gazprom Export."]
[null,"Withdrawal season, Q3–Q4 and Q1–Q2 of the next year"]
[null,"2005/2006","2006/2007","2007/2008","2008/2009","2009/2010","2010/2011","2011/2012","2012/2013","2013/2014","2014/2015","2015/2016","2016/2017","2017/2018","2018/2019","2019/2020"]
["Gas withdrawal* from UGSFs abroad"]
["FSU countries"]
["Total withdrawal (FSU countries)",984.1,291.10000000000002,352.3,762.8,1033.2,1679.7,2440.4,2269.9,2198.1999999999998,2414.6999999999998,2083.1,1997.1,1298.7,1067.5,861.7]
["Far abroad countries**"]
["Austria",200,200,652.79999999999995,381.9,{"$f":"ROUNDDOWN(480.151,1)","v":480.1},543.70000000000005,982.6,1534.1,1171.5999999999999,835.8,820,1480.5,2054,546.5,953.3]
["Great Britain","–",371.2,422.4,227.5,{"$f":"ROUND(317.951,1)","v":318},435,225.2,224.3,226.5,224,224.4,"–","– ","– ","–"]
["Hungary ","–","–","–","–","–","–","–","–","–",699.9,"–","–",898.4,267.7,183.4]
["Germany ",661.4,887.4,952.2,790.1,{"$f":"ROUND(731.396,1)","v":731.4},481.8,716.9,2342.1999999999998,1123.7,753.4,978.1,936.9,2117.5,1008,740.4]
["The Netherlands","–","–","–","–","–","–","–","–","–",405.4,1129.8,1981.3,1532.8,368.7,500.2]
["Serbia","–","–","–","–","–","–",34.299999999999997,145.69999999999999,67.5,0.5,12,0.5,44.5,13.7,1.2]
["Slovakia","–","–","–","–","–","–","–","–","–","–","–","–",673,201.7,388.7]
["France","–","–","–",273.89999999999998,{"$f":"ROUND(248.515,1)","v":248.5},299.7,"–","–","–","–","–","–","–","–","–"]
["Czech Republic","–","–","–","–","–","–","–","–","–","–","–",104.5,183.2,147,46.6]
["Short-term contracts for storage in European UGSFs","–","–","–","–","–","–","–","–","–","–","–","–",974.9,"–",412.9]
["Total injection (far abroad countries)",{"$f":"SUM(B54:B62)","v":861.4},{"$f":"SUM(C54:C62)","v":1458.6},2027.3999999999999,1673.4,1778,1760.2,1958.9999999999998,4246.3,2589.3000000000002,2919,3164.3,4503.7,8478.2999999999993,2553.3000000000002,3226.7]
["Total for the season",1845.5,1749.7000000000003,2379.6999999999998,2436.1999999999998,2811.2,3439.9000000000005,4399.3999999999996,6516.2,4787.5,5333.7,5247.4,6500.8,9777,3620.8,4088.4]
["* Excluding volumes sold in UGSFs"]
["** Gas withdrawal of Gazprom group for contracts of OOO Gazprom Export."]
[null,null,null,null,null,null,null,null,null,null,null,null,null,null,null,null,{"$f":"SUM(#REF!)","v":{"$error":"#REF!"}},{"$f":"SUM(#REF!)","v":{"$error":"#REF!"}},{"$f":"SUM(#REF!)","v":{"$error":"#REF!"}},{"$f":"SUM(#REF!)","v":{"$error":"#REF!"}},{"$f":"SUM(#REF!)","v":{"$error":"#REF!"}},{"$f":"SUM(#REF!)","v":{"$error":"#REF!"}},{"$f":"SUM(#REF!)","v":{"$error":"#REF!"}},{"$f":"SUM(#REF!)","v":{"$error":"#REF!"}},{"$f":"SUM(#REF!)","v":{"$error":"#REF!"}},{"$f":"SUM(#REF!)","v":{"$error":"#REF!"}},{"$f":"SUM(#REF!)","v":{"$error":"#REF!"}},{"$f":"SUM(#REF!)","v":{"$error":"#REF!"}},{"$f":"SUM(#REF!)","v":{"$error":"#REF!"}},{"$f":"SUM(#REF!)","v":{"$error":"#REF!"}},{"$f":"SUM(#REF!)","v":{"$error":"#REF!"}},{"$f":"SUM(#REF!)","v":{"$error":"#REF!"}},{"$f":"SUM(#REF!)","v":{"$error":"#REF!"}},{"$f":"SUM(#REF!)","v":{"$error":"#REF!"}},{"$f":"SUM(#REF!)","v":{"$error":"#REF!"}},{"$f":"SUM(#REF!)","v":{"$error":"#REF!"}},{"$f":"SUM(#REF!)","v":{"$error":"#REF!"}},{"$f":"SUM(#REF!)","v":{"$error":"#REF!"}},{"$f":"SUM(#REF!)","v":{"$error":"#REF!"}},{"$f":"SUM(#REF!)","v":{"$error":"#REF!"}},{"$f":"SUM(#REF!)","v":{"$error":"#REF!"}},{"$f":"SUM(#REF!)","v":{"$error":"#REF!"}},{"$f":"SUM(#REF!)","v":{"$error":"#REF!"}},{"$f":"SUM(#REF!)","v":{"$error":"#REF!"}},{"$f":"SUM(#REF!)","v":{"$error":"#REF!"}},{"$f":"SUM(#REF!)","v":{"$error":"#REF!"}},{"$f":"SUM(#REF!)","v":{"$error":"#REF!"}},{"$f":"SUM(#REF!)","v":{"$error":"#REF!"}},{"$f":"SUM(#REF!)","v":{"$error":"#REF!"}},{"$f":"SUM(#REF!)","v":{"$error":"#REF!"}},{"$f":"SUM(#REF!)","v":{"$error":"#REF!"}},{"$f":"SUM(#REF!)","v":{"$error":"#REF!"}},{"$f":"SUM(#REF!)","v":{"$error":"#REF!"}},{"$f":"SUM(#REF!)","v":{"$error":"#REF!"}},{"$f":"SUM(#REF!)","v":{"$error":"#REF!"}},{"$f":"SUM(#REF!)","v":{"$error":"#REF!"}},{"$f":"SUM(#REF!)","v":{"$error":"#REF!"}},{"$f":"SUM(#REF!)","v":{"$error":"#REF!"}},{"$f":"SUM(#REF!)","v":{"$error":"#REF!"}},{"$f":"SUM(#REF!)","v":{"$error":"#REF!"}},{"$f":"SUM(#REF!)","v":{"$error":"#REF!"}},{"$f":"SUM(#REF!)","v":{"$error":"#REF!"}},{"$f":"SUM(#REF!)","v":{"$error":"#REF!"}},{"$f":"SUM(#REF!)","v":{"$error":"#REF!"}},{"$f":"SUM(#REF!)","v":{"$error":"#REF!"}},{"$f":"SUM(#REF!)","v":{"$error":"#REF!"}},{"$f":"SUM(#REF!)","v":{"$error":"#REF!"}},{"$f":"SUM(#REF!)","v":{"$error":"#REF!"}},{"$f":"SUM(#REF!)","v":{"$error":"#REF!"}},{"$f":"SUM(#REF!)","v":{"$error":"#REF!"}},{"$f":"SUM(#REF!)","v":{"$error":"#REF!"}},{"$f":"SUM(#REF!)","v":{"$error":"#REF!"}},{"$f":"SUM(#REF!)","v":{"$error":"#REF!"}},{"$f":"SUM(#REF!)","v":{"$error":"#REF!"}},{"$f":"SUM(#REF!)","v":{"$error":"#REF!"}},{"$f":"SUM(#REF!)","v":{"$error":"#REF!"}},{"$f":"SUM(#REF!)","v":{"$error":"#REF!"}},{"$f":"SUM(#REF!)","v":{"$error":"#REF!"}},{"$f":"SUM(#REF!)","v":{"$error":"#REF!"}},{"$f":"SUM(#REF!)","v":{"$error":"#REF!"}},{"$f":"SUM(#REF!)","v":{"$error":"#REF!"}},{"$f":"SUM(#REF!)","v":{"$error":"#REF!"}},{"$f":"SUM(#REF!)","v":{"$error":"#REF!"}},{"$f":"SUM(#REF!)","v":{"$error":"#REF!"}},{"$f":"SUM(#REF!)","v":{"$error":"#REF!"}},{"$f":"SUM(#REF!)","v":{"$error":"#REF!"}},{"$f":"SUM(#REF!)","v":{"$error":"#REF!"}},{"$f":"SUM(#REF!)","v":{"$error":"#REF!"}},{"$f":"SUM(#REF!)","v":{"$error":"#REF!"}},{"$f":"SUM(#REF!)","v":{"$error":"#REF!"}},{"$f":"SUM(#REF!)","v":{"$error":"#REF!"}},{"$f":"SUM(#REF!)","v":{"$error":"#REF!"}},{"$f":"SUM(#REF!)","v":{"$error":"#REF!"}},{"$f":"SUM(#REF!)","v":{"$error":"#REF!"}},{"$f":"SUM(#REF!)","v":{"$error":"#REF!"}},{"$f":"SUM(#REF!)","v":{"$error":"#REF!"}},{"$f":"SUM(#REF!)","v":{"$error":"#REF!"}},{"$f":"SUM(#REF!)","v":{"$error":"#REF!"}},{"$f":"SUM(#REF!)","v":{"$error":"#REF!"}},{"$f":"SUM(#REF!)","v":{"$error":"#REF!"}},{"$f":"SUM(#REF!)","v":{"$error":"#REF!"}},{"$f":"SUM(#REF!)","v":{"$error":"#REF!"}},{"$f":"SUM(#REF!)","v":{"$error":"#REF!"}},{"$f":"SUM(#REF!)","v":{"$error":"#REF!"}},{"$f":"SUM(#REF!)","v":{"$error":"#REF!"}},{"$f":"SUM(#REF!)","v":{"$error":"#REF!"}},{"$f":"SUM(#REF!)","v":{"$error":"#REF!"}},{"$f":"SUM(#REF!)","v":{"$error":"#REF!"}},{"$f":"SUM(#REF!)","v":{"$error":"#REF!"}},{"$f":"SUM(#REF!)","v":{"$error":"#REF!"}},{"$f":"SUM(#REF!)","v":{"$error":"#REF!"}},{"$f":"SUM(#REF!)","v":{"$error":"#REF!"}},{"$f":"SUM(#REF!)","v":{"$error":"#REF!"}},{"$f":"SUM(#REF!)","v":{"$error":"#REF!"}},{"$f":"SUM(#REF!)","v":{"$error":"#REF!"}},{"$f":"SUM(#REF!)","v":{"$error":"#REF!"}},{"$f":"SUM(#REF!)","v":{"$error":"#REF!"}},{"$f":"SUM(#REF!)","v":{"$error":"#REF!"}},{"$f":"SUM(#REF!)","v":{"$error":"#REF!"}},{"$f":"SUM(#REF!)","v":{"$error":"#REF!"}},{"$f":"SUM(#REF!)","v":{"$error":"#REF!"}},{"$f":"SUM(#REF!)","v":{"$error":"#REF!"}},{"$f":"SUM(#REF!)","v":{"$error":"#REF!"}},{"$f":"SUM(#REF!)","v":{"$error":"#REF!"}},{"$f":"SUM(#REF!)","v":{"$error":"#REF!"}},{"$f":"SUM(#REF!)","v":{"$error":"#REF!"}},{"$f":"SUM(#REF!)","v":{"$error":"#REF!"}},{"$f":"SUM(#REF!)","v":{"$error":"#REF!"}},{"$f":"SUM(#REF!)","v":{"$error":"#REF!"}},{"$f":"SUM(#REF!)","v":{"$error":"#REF!"}},{"$f":"SUM(#REF!)","v":{"$error":"#REF!"}},{"$f":"SUM(#REF!)","v":{"$error":"#REF!"}},{"$f":"SUM(#REF!)","v":{"$error":"#REF!"}},{"$f":"SUM(#REF!)","v":{"$error":"#REF!"}},{"$f":"SUM(#REF!)","v":{"$error":"#REF!"}},{"$f":"SUM(#REF!)","v":{"$error":"#REF!"}},{"$f":"SUM(#REF!)","v":{"$error":"#REF!"}},{"$f":"SUM(#REF!)","v":{"$error":"#REF!"}},{"$f":"SUM(#REF!)","v":{"$error":"#REF!"}},{"$f":"SUM(#REF!)","v":{"$error":"#REF!"}},{"$f":"SUM(#REF!)","v":{"$error":"#REF!"}},{"$f":"SUM(#REF!)","v":{"$error":"#REF!"}},{"$f":"SUM(#REF!)","v":{"$error":"#REF!"}},{"$f":"SUM(#REF!)","v":{"$error":"#REF!"}},{"$f":"SUM(#REF!)","v":{"$error":"#REF!"}},{"$f":"SUM(#REF!)","v":{"$error":"#REF!"}},{"$f":"SUM(#REF!)","v":{"$error":"#REF!"}},{"$f":"SUM(#REF!)","v":{"$error":"#REF!"}},{"$f":"SUM(#REF!)","v":{"$error":"#REF!"}},{"$f":"SUM(#REF!)","v":{"$error":"#REF!"}},{"$f":"SUM(#REF!)","v":{"$error":"#REF!"}},{"$f":"SUM(#REF!)","v":{"$error":"#REF!"}},{"$f":"SUM(#REF!)","v":{"$error":"#REF!"}},{"$f":"SUM(#REF!)","v":{"$error":"#REF!"}},{"$f":"SUM(#REF!)","v":{"$error":"#REF!"}},{"$f":"SUM(#REF!)","v":{"$error":"#REF!"}},{"$f":"SUM(#REF!)","v":{"$error":"#REF!"}},{"$f":"SUM(#REF!)","v":{"$error":"#REF!"}},{"$f":"SUM(#REF!)","v":{"$error":"#REF!"}},{"$f":"SUM(#REF!)","v":{"$error":"#REF!"}},{"$f":"SUM(#REF!)","v":{"$error":"#REF!"}},{"$f":"SUM(#REF!)","v":{"$error":"#REF!"}},{"$f":"SUM(#REF!)","v":{"$error":"#REF!"}},{"$f":"SUM(#REF!)","v":{"$error":"#REF!"}},{"$f":"SUM(#REF!)","v":{"$error":"#REF!"}},{"$f":"SUM(#REF!)","v":{"$error":"#REF!"}},{"$f":"SUM(#REF!)","v":{"$error":"#REF!"}},{"$f":"SUM(#REF!)","v":{"$error":"#REF!"}},{"$f":"SUM(#REF!)","v":{"$error":"#REF!"}},{"$f":"SUM(#REF!)","v":{"$error":"#REF!"}},{"$f":"SUM(#REF!)","v":{"$error":"#REF!"}},{"$f":"SUM(#REF!)","v":{"$error":"#REF!"}},{"$f":"SUM(#REF!)","v":{"$error":"#REF!"}},{"$f":"SUM(#REF!)","v":{"$error":"#REF!"}},{"$f":"SUM(#REF!)","v":{"$error":"#REF!"}},{"$f":"SUM(#REF!)","v":{"$error":"#REF!"}},{"$f":"SUM(#REF!)","v":{"$error":"#REF!"}},{"$f":"SUM(#REF!)","v":{"$error":"#REF!"}},{"$f":"SUM(#REF!)","v":{"$error":"#REF!"}},{"$f":"SUM(#REF!)","v":{"$error":"#REF!"}},{"$f":"SUM(#REF!)","v":{"$error":"#REF!"}},{"$f":"SUM(#REF!)","v":{"$error":"#REF!"}},{"$f":"SUM(#REF!)","v":{"$error":"#REF!"}},{"$f":"SUM(#REF!)","v":{"$error":"#REF!"}},{"$f":"SUM(#REF!)","v":{"$error":"#REF!"}},{"$f":"SUM(#REF!)","v":{"$error":"#REF!"}},{"$f":"SUM(#REF!)","v":{"$error":"#REF!"}},{"$f":"SUM(#REF!)","v":{"$error":"#REF!"}},{"$f":"SUM(#REF!)","v":{"$error":"#REF!"}},{"$f":"SUM(#REF!)","v":{"$error":"#REF!"}},{"$f":"SUM(#REF!)","v":{"$error":"#REF!"}},{"$f":"SUM(#REF!)","v":{"$error":"#REF!"}},{"$f":"SUM(#REF!)","v":{"$error":"#REF!"}},{"$f":"SUM(#REF!)","v":{"$error":"#REF!"}},{"$f":"SUM(#REF!)","v":{"$error":"#REF!"}},{"$f":"SUM(#REF!)","v":{"$error":"#REF!"}},{"$f":"SUM(#REF!)","v":{"$error":"#REF!"}},{"$f":"SUM(#REF!)","v":{"$error":"#REF!"}},{"$f":"SUM(#REF!)","v":{"$error":"#REF!"}},{"$f":"SUM(#REF!)","v":{"$error":"#REF!"}},{"$f":"SUM(#REF!)","v":{"$error":"#REF!"}},{"$f":"SUM(#REF!)","v":{"$error":"#REF!"}},{"$f":"SUM(#REF!)","v":{"$error":"#REF!"}},{"$f":"SUM(#REF!)","v":{"$error":"#REF!"}},{"$f":"SUM(#REF!)","v":{"$error":"#REF!"}},{"$f":"SUM(#REF!)","v":{"$error":"#REF!"}},{"$f":"SUM(#REF!)","v":{"$error":"#REF!"}},{"$f":"SUM(#REF!)","v":{"$error":"#REF!"}},{"$f":"SUM(#REF!)","v":{"$error":"#REF!"}},{"$f":"SUM(#REF!)","v":{"$error":"#REF!"}},{"$f":"SUM(#REF!)","v":{"$error":"#REF!"}},{"$f":"SUM(#REF!)","v":{"$error":"#REF!"}},{"$f":"SUM(#REF!)","v":{"$error":"#REF!"}},{"$f":"SUM(#REF!)","v":{"$error":"#REF!"}},{"$f":"SUM(#REF!)","v":{"$error":"#REF!"}},{"$f":"SUM(#REF!)","v":{"$error":"#REF!"}},{"$f":"SUM(#REF!)","v":{"$error":"#REF!"}},{"$f":"SUM(#REF!)","v":{"$error":"#REF!"}},{"$f":"SUM(#REF!)","v":{"$error":"#REF!"}},{"$f":"SUM(#REF!)","v":{"$error":"#REF!"}},{"$f":"SUM(#REF!)","v":{"$error":"#REF!"}},{"$f":"SUM(#REF!)","v":{"$error":"#REF!"}},{"$f":"SUM(#REF!)","v":{"$error":"#REF!"}},{"$f":"SUM(#REF!)","v":{"$error":"#REF!"}},{"$f":"SUM(#REF!)","v":{"$error":"#REF!"}},{"$f":"SUM(#REF!)","v":{"$error":"#REF!"}},{"$f":"SUM(#REF!)","v":{"$error":"#REF!"}},{"$f":"SUM(#REF!)","v":{"$error":"#REF!"}},{"$f":"SUM(#REF!)","v":{"$error":"#REF!"}},{"$f":"SUM(#REF!)","v":{"$error":"#REF!"}},{"$f":"SUM(#REF!)","v":{"$error":"#REF!"}},{"$f":"SUM(#REF!)","v":{"$error":"#REF!"}},{"$f":"SUM(#REF!)","v":{"$error":"#REF!"}},{"$f":"SUM(#REF!)","v":{"$error":"#REF!"}},{"$f":"SUM(#REF!)","v":{"$error":"#REF!"}},{"$f":"SUM(#REF!)","v":{"$error":"#REF!"}},{"$f":"SUM(#REF!)","v":{"$error":"#REF!"}},{"$f":"SUM(#REF!)","v":{"$error":"#REF!"}},{"$f":"SUM(#REF!)","v":{"$error":"#REF!"}},{"$f":"SUM(#REF!)","v":{"$error":"#REF!"}},{"$f":"SUM(#REF!)","v":{"$error":"#REF!"}},{"$f":"SUM(#REF!)","v":{"$error":"#REF!"}},{"$f":"SUM(#REF!)","v":{"$error":"#REF!"}},{"$f":"SUM(#REF!)","v":{"$error":"#REF!"}},{"$f":"SUM(#REF!)","v":{"$error":"#REF!"}},{"$f":"SUM(#REF!)","v":{"$error":"#REF!"}},{"$f":"SUM(#REF!)","v":{"$error":"#REF!"}},{"$f":"SUM(#REF!)","v":{"$error":"#REF!"}},{"$f":"SUM(#REF!)","v":{"$error":"#REF!"}},{"$f":"SUM(#REF!)","v":{"$error":"#REF!"}},{"$f":"SUM(#REF!)","v":{"$error":"#REF!"}},{"$f":"SUM(#REF!)","v":{"$error":"#REF!"}},{"$f":"SUM(#REF!)","v":{"$error":"#REF!"}},{"$f":"SUM(#REF!)","v":{"$error":"#REF!"}},{"$f":"SUM(#REF!)","v":{"$error":"#REF!"}},{"$f":"SUM(#REF!)","v":{"$error":"#REF!"}},{"$f":"SUM(#REF!)","v":{"$error":"#REF!"}},{"$f":"SUM(#REF!)","v":{"$error":"#REF!"}},{"$f":"SUM(#REF!)","v":{"$error":"#REF!"}},{"$f":"SUM(#REF!)","v":{"$error":"#REF!"}},{"$f":"SUM(#REF!)","v":{"$error":"#REF!"}},{"$f":"SUM(#REF!)","v":{"$error":"#REF!"}},{"$f":"SUM(#REF!)","v":{"$error":"#REF!"}},{"$f":"SUM(#REF!)","v":{"$error":"#REF!"}},{"$f":"SUM(#REF!)","v":{"$error":"#REF!"}},{"$f":"SUM(#REF!)","v":{"$error":"#REF!"}},{"$f":"SUM(#REF!)","v":{"$error":"#REF!"}},{"$f":"SUM(#REF!)","v":{"$error":"#REF!"}},{"$f":"SUM(#REF!)","v":{"$error":"#REF!"}},{"$f":"SUM(#REF!)","v":{"$error":"#REF!"}},{"$f":"SUM(#REF!)","v":{"$error":"#REF!"}},{"$f":"SUM(#REF!)","v":{"$error":"#REF!"}},{"$f":"SUM(#REF!)","v":{"$error":"#REF!"}},{"$f":"SUM(#REF!)","v":{"$error":"#REF!"}},{"$f":"SUM(#REF!)","v":{"$error":"#REF!"}},{"$f":"SUM(#REF!)","v":{"$error":"#REF!"}},{"$f":"SUM(#REF!)","v":{"$error":"#REF!"}},{"$f":"SUM(#REF!)","v":{"$error":"#REF!"}},{"$f":"SUM(#REF!)","v":{"$error":"#REF!"}},{"$f":"SUM(#REF!)","v":{"$error":"#REF!"}},{"$f":"SUM(#REF!)","v":{"$error":"#REF!"}},{"$f":"SUM(#REF!)","v":{"$error":"#REF!"}},{"$f":"SUM(#REF!)","v":{"$error":"#REF!"}},{"$f":"SUM(#REF!)","v":{"$error":"#REF!"}},{"$f":"SUM(#REF!)","v":{"$error":"#REF!"}},{"$f":"SUM(#REF!)","v":{"$error":"#REF!"}},{"$f":"SUM(#REF!)","v":{"$error":"#REF!"}},{"$f":"SUM(#REF!)","v":{"$error":"#REF!"}},{"$f":"SUM(#REF!)","v":{"$error":"#REF!"}},{"$f":"SUM(#REF!)","v":{"$error":"#REF!"}},{"$f":"SUM(#REF!)","v":{"$error":"#REF!"}},{"$f":"SUM(#REF!)","v":{"$error":"#REF!"}},{"$f":"SUM(#REF!)","v":{"$error":"#REF!"}},{"$f":"SUM(#REF!)","v":{"$error":"#REF!"}},{"$f":"SUM(#REF!)","v":{"$error":"#REF!"}},{"$f":"SUM(#REF!)","v":{"$error":"#REF!"}},{"$f":"SUM(#REF!)","v":{"$error":"#REF!"}},{"$f":"SUM(#REF!)","v":{"$error":"#REF!"}},{"$f":"SUM(#REF!)","v":{"$error":"#REF!"}},{"$f":"SUM(#REF!)","v":{"$error":"#REF!"}},{"$f":"SUM(#REF!)","v":{"$error":"#REF!"}},{"$f":"SUM(#REF!)","v":{"$error":"#REF!"}},{"$f":"SUM(#REF!)","v":{"$error":"#REF!"}},{"$f":"SUM(#REF!)","v":{"$error":"#REF!"}},{"$f":"SUM(#REF!)","v":{"$error":"#REF!"}},{"$f":"SUM(#REF!)","v":{"$error":"#REF!"}},{"$f":"SUM(#REF!)","v":{"$error":"#REF!"}},{"$f":"SUM(#REF!)","v":{"$error":"#REF!"}},{"$f":"SUM(#REF!)","v":{"$error":"#REF!"}},{"$f":"SUM(#REF!)","v":{"$error":"#REF!"}},{"$f":"SUM(#REF!)","v":{"$error":"#REF!"}},{"$f":"SUM(#REF!)","v":{"$error":"#REF!"}},{"$f":"SUM(#REF!)","v":{"$error":"#REF!"}},{"$f":"SUM(#REF!)","v":{"$error":"#REF!"}},{"$f":"SUM(#REF!)","v":{"$error":"#REF!"}},{"$f":"SUM(#REF!)","v":{"$error":"#REF!"}},{"$f":"SUM(#REF!)","v":{"$error":"#REF!"}},{"$f":"SUM(#REF!)","v":{"$error":"#REF!"}},{"$f":"SUM(#REF!)","v":{"$error":"#REF!"}},{"$f":"SUM(#REF!)","v":{"$error":"#REF!"}},{"$f":"SUM(#REF!)","v":{"$error":"#REF!"}},{"$f":"SUM(#REF!)","v":{"$error":"#REF!"}},{"$f":"SUM(#REF!)","v":{"$error":"#REF!"}},{"$f":"SUM(#REF!)","v":{"$error":"#REF!"}},{"$f":"SUM(#REF!)","v":{"$error":"#REF!"}},{"$f":"SUM(#REF!)","v":{"$error":"#REF!"}},{"$f":"SUM(#REF!)","v":{"$error":"#REF!"}},{"$f":"SUM(#REF!)","v":{"$error":"#REF!"}},{"$f":"SUM(#REF!)","v":{"$error":"#REF!"}},{"$f":"SUM(#REF!)","v":{"$error":"#REF!"}},{"$f":"SUM(#REF!)","v":{"$error":"#REF!"}},{"$f":"SUM(#REF!)","v":{"$error":"#REF!"}},{"$f":"SUM(#REF!)","v":{"$error":"#REF!"}},{"$f":"SUM(#REF!)","v":{"$error":"#REF!"}},{"$f":"SUM(#REF!)","v":{"$error":"#REF!"}},{"$f":"SUM(#REF!)","v":{"$error":"#REF!"}},{"$f":"SUM(#REF!)","v":{"$error":"#REF!"}},{"$f":"SUM(#REF!)","v":{"$error":"#REF!"}},{"$f":"SUM(#REF!)","v":{"$error":"#REF!"}},{"$f":"SUM(#REF!)","v":{"$error":"#REF!"}},{"$f":"SUM(#REF!)","v":{"$error":"#REF!"}},{"$f":"SUM(#REF!)","v":{"$error":"#REF!"}},{"$f":"SUM(#REF!)","v":{"$error":"#REF!"}},{"$f":"SUM(#REF!)","v":{"$error":"#REF!"}},{"$f":"SUM(#REF!)","v":{"$error":"#REF!"}},{"$f":"SUM(#REF!)","v":{"$error":"#REF!"}},{"$f":"SUM(#REF!)","v":{"$error":"#REF!"}},{"$f":"SUM(#REF!)","v":{"$error":"#REF!"}},{"$f":"SUM(#REF!)","v":{"$error":"#REF!"}},{"$f":"SUM(#REF!)","v":{"$error":"#REF!"}},{"$f":"SUM(#REF!)","v":{"$error":"#REF!"}},{"$f":"SUM(#REF!)","v":{"$error":"#REF!"}},{"$f":"SUM(#REF!)","v":{"$error":"#REF!"}},{"$f":"SUM(#REF!)","v":{"$error":"#REF!"}},{"$f":"SUM(#REF!)","v":{"$error":"#REF!"}},{"$f":"SUM(#REF!)","v":{"$error":"#REF!"}},{"$f":"SUM(#REF!)","v":{"$error":"#REF!"}},{"$f":"SUM(#REF!)","v":{"$error":"#REF!"}},{"$f":"SUM(#REF!)","v":{"$error":"#REF!"}},{"$f":"SUM(#REF!)","v":{"$error":"#REF!"}},{"$f":"SUM(#REF!)","v":{"$error":"#REF!"}},{"$f":"SUM(#REF!)","v":{"$error":"#REF!"}},{"$f":"SUM(#REF!)","v":{"$error":"#REF!"}},{"$f":"SUM(#REF!)","v":{"$error":"#REF!"}},{"$f":"SUM(#REF!)","v":{"$error":"#REF!"}},{"$f":"SUM(#REF!)","v":{"$error":"#REF!"}},{"$f":"SUM(#REF!)","v":{"$error":"#REF!"}},{"$f":"SUM(#REF!)","v":{"$error":"#REF!"}},{"$f":"SUM(#REF!)","v":{"$error":"#REF!"}},{"$f":"SUM(#REF!)","v":{"$error":"#REF!"}},{"$f":"SUM(#REF!)","v":{"$error":"#REF!"}},{"$f":"SUM(#REF!)","v":{"$error":"#REF!"}},{"$f":"SUM(#REF!)","v":{"$error":"#REF!"}},{"$f":"SUM(#REF!)","v":{"$error":"#REF!"}},{"$f":"SUM(#REF!)","v":{"$error":"#REF!"}},{"$f":"SUM(#REF!)","v":{"$error":"#REF!"}},{"$f":"SUM(#REF!)","v":{"$error":"#REF!"}},{"$f":"SUM(#REF!)","v":{"$error":"#REF!"}},{"$f":"SUM(#REF!)","v":{"$error":"#REF!"}},{"$f":"SUM(#REF!)","v":{"$error":"#REF!"}},{"$f":"SUM(#REF!)","v":{"$error":"#REF!"}},{"$f":"SUM(#REF!)","v":{"$error":"#REF!"}},{"$f":"SUM(#REF!)","v":{"$error":"#REF!"}},{"$f":"SUM(#REF!)","v":{"$error":"#REF!"}},{"$f":"SUM(#REF!)","v":{"$error":"#REF!"}},{"$f":"SUM(#REF!)","v":{"$error":"#REF!"}},{"$f":"SUM(#REF!)","v":{"$error":"#REF!"}},{"$f":"SUM(#REF!)","v":{"$error":"#REF!"}},{"$f":"SUM(#REF!)","v":{"$error":"#REF!"}},{"$f":"SUM(#REF!)","v":{"$error":"#REF!"}},{"$f":"SUM(#REF!)","v":{"$error":"#REF!"}},{"$f":"SUM(#REF!)","v":{"$error":"#REF!"}},{"$f":"SUM(#REF!)","v":{"$error":"#REF!"}},{"$f":"SUM(#REF!)","v":{"$error":"#REF!"}},{"$f":"SUM(#REF!)","v":{"$error":"#REF!"}},{"$f":"SUM(#REF!)","v":{"$error":"#REF!"}},{"$f":"SUM(#REF!)","v":{"$error":"#REF!"}},{"$f":"SUM(#REF!)","v":{"$error":"#REF!"}},{"$f":"SUM(#REF!)","v":{"$error":"#REF!"}},{"$f":"SUM(#REF!)","v":{"$error":"#REF!"}},{"$f":"SUM(#REF!)","v":{"$error":"#REF!"}},{"$f":"SUM(#REF!)","v":{"$error":"#REF!"}},{"$f":"SUM(#REF!)","v":{"$error":"#REF!"}},{"$f":"SUM(#REF!)","v":{"$error":"#REF!"}},{"$f":"SUM(#REF!)","v":{"$error":"#REF!"}},{"$f":"SUM(#REF!)","v":{"$error":"#REF!"}},{"$f":"SUM(#REF!)","v":{"$error":"#REF!"}},{"$f":"SUM(#REF!)","v":{"$error":"#REF!"}},{"$f":"SUM(#REF!)","v":{"$error":"#REF!"}},{"$f":"SUM(#REF!)","v":{"$error":"#REF!"}},{"$f":"SUM(#REF!)","v":{"$error":"#REF!"}},{"$f":"SUM(#REF!)","v":{"$error":"#REF!"}},{"$f":"SUM(#REF!)","v":{"$error":"#REF!"}},{"$f":"SUM(#REF!)","v":{"$error":"#REF!"}},{"$f":"SUM(#REF!)","v":{"$error":"#REF!"}},{"$f":"SUM(#REF!)","v":{"$error":"#REF!"}},{"$f":"SUM(#REF!)","v":{"$error":"#REF!"}},{"$f":"SUM(#REF!)","v":{"$error":"#REF!"}},{"$f":"SUM(#REF!)","v":{"$error":"#REF!"}},{"$f":"SUM(#REF!)","v":{"$error":"#REF!"}},{"$f":"SUM(#REF!)","v":{"$error":"#REF!"}},{"$f":"SUM(#REF!)","v":{"$error":"#REF!"}},{"$f":"SUM(#REF!)","v":{"$error":"#REF!"}},{"$f":"SUM(#REF!)","v":{"$error":"#REF!"}},{"$f":"SUM(#REF!)","v":{"$error":"#REF!"}},{"$f":"SUM(#REF!)","v":{"$error":"#REF!"}},{"$f":"SUM(#REF!)","v":{"$error":"#REF!"}},{"$f":"SUM(#REF!)","v":{"$error":"#REF!"}},{"$f":"SUM(#REF!)","v":{"$error":"#REF!"}},{"$f":"SUM(#REF!)","v":{"$error":"#REF!"}},{"$f":"SUM(#REF!)","v":{"$error":"#REF!"}},{"$f":"SUM(#REF!)","v":{"$error":"#REF!"}},{"$f":"SUM(#REF!)","v":{"$error":"#REF!"}},{"$f":"SUM(#REF!)","v":{"$error":"#REF!"}},{"$f":"SUM(#REF!)","v":{"$error":"#REF!"}},{"$f":"SUM(#REF!)","v":{"$error":"#REF!"}},{"$f":"SUM(#REF!)","v":{"$error":"#REF!"}},{"$f":"SUM(#REF!)","v":{"$error":"#REF!"}},{"$f":"SUM(#REF!)","v":{"$error":"#REF!"}},{"$f":"SUM(#REF!)","v":{"$error":"#REF!"}},{"$f":"SUM(#REF!)","v":{"$error":"#REF!"}},{"$f":"SUM(#REF!)","v":{"$error":"#REF!"}},{"$f":"SUM(#REF!)","v":{"$error":"#REF!"}},{"$f":"SUM(#REF!)","v":{"$error":"#REF!"}},{"$f":"SUM(#REF!)","v":{"$error":"#REF!"}},{"$f":"SUM(#REF!)","v":{"$error":"#REF!"}},{"$f":"SUM(#REF!)","v":{"$error":"#REF!"}},{"$f":"SUM(#REF!)","v":{"$error":"#REF!"}},{"$f":"SUM(#REF!)","v":{"$error":"#REF!"}},{"$f":"SUM(#REF!)","v":{"$error":"#REF!"}},{"$f":"SUM(#REF!)","v":{"$error":"#REF!"}},{"$f":"SUM(#REF!)","v":{"$error":"#REF!"}},{"$f":"SUM(#REF!)","v":{"$error":"#REF!"}},{"$f":"SUM(#REF!)","v":{"$error":"#REF!"}},{"$f":"SUM(#REF!)","v":{"$error":"#REF!"}},{"$f":"SUM(#REF!)","v":{"$error":"#REF!"}},{"$f":"SUM(#REF!)","v":{"$error":"#REF!"}},{"$f":"SUM(#REF!)","v":{"$error":"#REF!"}},{"$f":"SUM(#REF!)","v":{"$error":"#REF!"}},{"$f":"SUM(#REF!)","v":{"$error":"#REF!"}},{"$f":"SUM(#REF!)","v":{"$error":"#REF!"}},{"$f":"SUM(#REF!)","v":{"$error":"#REF!"}},{"$f":"SUM(#REF!)","v":{"$error":"#REF!"}},{"$f":"SUM(#REF!)","v":{"$error":"#REF!"}},{"$f":"SUM(#REF!)","v":{"$error":"#REF!"}},{"$f":"SUM(#REF!)","v":{"$error":"#REF!"}},{"$f":"SUM(#REF!)","v":{"$error":"#REF!"}},{"$f":"SUM(#REF!)","v":{"$error":"#REF!"}},{"$f":"SUM(#REF!)","v":{"$error":"#REF!"}},{"$f":"SUM(#REF!)","v":{"$error":"#REF!"}},{"$f":"SUM(#REF!)","v":{"$error":"#REF!"}},{"$f":"SUM(#REF!)","v":{"$error":"#REF!"}},{"$f":"SUM(#REF!)","v":{"$error":"#REF!"}},{"$f":"SUM(#REF!)","v":{"$error":"#REF!"}},{"$f":"SUM(#REF!)","v":{"$error":"#REF!"}},{"$f":"SUM(#REF!)","v":{"$error":"#REF!"}},{"$f":"SUM(#REF!)","v":{"$error":"#REF!"}},{"$f":"SUM(#REF!)","v":{"$error":"#REF!"}},{"$f":"SUM(#REF!)","v":{"$error":"#REF!"}},{"$f":"SUM(#REF!)","v":{"$error":"#REF!"}},{"$f":"SUM(#REF!)","v":{"$error":"#REF!"}},{"$f":"SUM(#REF!)","v":{"$error":"#REF!"}},{"$f":"SUM(#REF!)","v":{"$error":"#REF!"}},{"$f":"SUM(#REF!)","v":{"$error":"#REF!"}},{"$f":"SUM(#REF!)","v":{"$error":"#REF!"}},{"$f":"SUM(#REF!)","v":{"$error":"#REF!"}},{"$f":"SUM(#REF!)","v":{"$error":"#REF!"}},{"$f":"SUM(#REF!)","v":{"$error":"#REF!"}},{"$f":"SUM(#REF!)","v":{"$error":"#REF!"}},{"$f":"SUM(#REF!)","v":{"$error":"#REF!"}},{"$f":"SUM(#REF!)","v":{"$error":"#REF!"}},{"$f":"SUM(#REF!)","v":{"$error":"#REF!"}},{"$f":"SUM(#REF!)","v":{"$error":"#REF!"}},{"$f":"SUM(#REF!)","v":{"$error":"#REF!"}},{"$f":"SUM(#REF!)","v":{"$error":"#REF!"}},{"$f":"SUM(#REF!)","v":{"$error":"#REF!"}},{"$f":"SUM(#REF!)","v":{"$error":"#REF!"}},{"$f":"SUM(#REF!)","v":{"$error":"#REF!"}},{"$f":"SUM(#REF!)","v":{"$error":"#REF!"}},{"$f":"SUM(#REF!)","v":{"$error":"#REF!"}},{"$f":"SUM(#REF!)","v":{"$error":"#REF!"}},{"$f":"SUM(#REF!)","v":{"$error":"#REF!"}},{"$f":"SUM(#REF!)","v":{"$error":"#REF!"}},{"$f":"SUM(#REF!)","v":{"$error":"#REF!"}},{"$f":"SUM(#REF!)","v":{"$error":"#REF!"}},{"$f":"SUM(#REF!)","v":{"$error":"#REF!"}},{"$f":"SUM(#REF!)","v":{"$error":"#REF!"}},{"$f":"SUM(#REF!)","v":{"$error":"#REF!"}},{"$f":"SUM(#REF!)","v":{"$error":"#REF!"}},{"$f":"SUM(#REF!)","v":{"$error":"#REF!"}},{"$f":"SUM(#REF!)","v":{"$error":"#REF!"}},{"$f":"SUM(#REF!)","v":{"$error":"#REF!"}},{"$f":"SUM(#REF!)","v":{"$error":"#REF!"}},{"$f":"SUM(#REF!)","v":{"$error":"#REF!"}},{"$f":"SUM(#REF!)","v":{"$error":"#REF!"}},{"$f":"SUM(#REF!)","v":{"$error":"#REF!"}},{"$f":"SUM(#REF!)","v":{"$error":"#REF!"}},{"$f":"SUM(#REF!)","v":{"$error":"#REF!"}},{"$f":"SUM(#REF!)","v":{"$error":"#REF!"}},{"$f":"SUM(#REF!)","v":{"$error":"#REF!"}},{"$f":"SUM(#REF!)","v":{"$error":"#REF!"}},{"$f":"SUM(#REF!)","v":{"$error":"#REF!"}},{"$f":"SUM(#REF!)","v":{"$error":"#REF!"}},{"$f":"SUM(#REF!)","v":{"$error":"#REF!"}},{"$f":"SUM(#REF!)","v":{"$error":"#REF!"}},{"$f":"SUM(#REF!)","v":{"$error":"#REF!"}},{"$f":"SUM(#REF!)","v":{"$error":"#REF!"}},{"$f":"SUM(#REF!)","v":{"$error":"#REF!"}},{"$f":"SUM(#REF!)","v":{"$error":"#REF!"}},{"$f":"SUM(#REF!)","v":{"$error":"#REF!"}},{"$f":"SUM(#REF!)","v":{"$error":"#REF!"}},{"$f":"SUM(#REF!)","v":{"$error":"#REF!"}},{"$f":"SUM(#REF!)","v":{"$error":"#REF!"}},{"$f":"SUM(#REF!)","v":{"$error":"#REF!"}},{"$f":"SUM(#REF!)","v":{"$error":"#REF!"}},{"$f":"SUM(#REF!)","v":{"$error":"#REF!"}},{"$f":"SUM(#REF!)","v":{"$error":"#REF!"}},{"$f":"SUM(#REF!)","v":{"$error":"#REF!"}},{"$f":"SUM(#REF!)","v":{"$error":"#REF!"}},{"$f":"SUM(#REF!)","v":{"$error":"#REF!"}},{"$f":"SUM(#REF!)","v":{"$error":"#REF!"}},{"$f":"SUM(#REF!)","v":{"$error":"#REF!"}},{"$f":"SUM(#REF!)","v":{"$error":"#REF!"}},{"$f":"SUM(#REF!)","v":{"$error":"#REF!"}},{"$f":"SUM(#REF!)","v":{"$error":"#REF!"}},{"$f":"SUM(#REF!)","v":{"$error":"#REF!"}},{"$f":"SUM(#REF!)","v":{"$error":"#REF!"}},{"$f":"SUM(#REF!)","v":{"$error":"#REF!"}},{"$f":"SUM(#REF!)","v":{"$error":"#REF!"}},{"$f":"SUM(#REF!)","v":{"$error":"#REF!"}},{"$f":"SUM(#REF!)","v":{"$error":"#REF!"}},{"$f":"SUM(#REF!)","v":{"$error":"#REF!"}},{"$f":"SUM(#REF!)","v":{"$error":"#REF!"}},{"$f":"SUM(#REF!)","v":{"$error":"#REF!"}},{"$f":"SUM(#REF!)","v":{"$error":"#REF!"}},{"$f":"SUM(#REF!)","v":{"$error":"#REF!"}},{"$f":"SUM(#REF!)","v":{"$error":"#REF!"}},{"$f":"SUM(#REF!)","v":{"$error":"#REF!"}},{"$f":"SUM(#REF!)","v":{"$error":"#REF!"}},{"$f":"SUM(#REF!)","v":{"$error":"#REF!"}},{"$f":"SUM(#REF!)","v":{"$error":"#REF!"}},{"$f":"SUM(#REF!)","v":{"$error":"#REF!"}},{"$f":"SUM(#REF!)","v":{"$error":"#REF!"}},{"$f":"SUM(#REF!)","v":{"$error":"#REF!"}},{"$f":"SUM(#REF!)","v":{"$error":"#REF!"}},{"$f":"SUM(#REF!)","v":{"$error":"#REF!"}},{"$f":"SUM(#REF!)","v":{"$error":"#REF!"}},{"$f":"SUM(#REF!)","v":{"$error":"#REF!"}},{"$f":"SUM(#REF!)","v":{"$error":"#REF!"}},{"$f":"SUM(#REF!)","v":{"$error":"#REF!"}},{"$f":"SUM(#REF!)","v":{"$error":"#REF!"}},{"$f":"SUM(#REF!)","v":{"$error":"#REF!"}},{"$f":"SUM(#REF!)","v":{"$error":"#REF!"}},{"$f":"SUM(#REF!)","v":{"$error":"#REF!"}},{"$f":"SUM(#REF!)","v":{"$error":"#REF!"}},{"$f":"SUM(#REF!)","v":{"$error":"#REF!"}},{"$f":"SUM(#REF!)","v":{"$error":"#REF!"}},{"$f":"SUM(#REF!)","v":{"$error":"#REF!"}},{"$f":"SUM(#REF!)","v":{"$error":"#REF!"}},{"$f":"SUM(#REF!)","v":{"$error":"#REF!"}},{"$f":"SUM(#REF!)","v":{"$error":"#REF!"}},{"$f":"SUM(#REF!)","v":{"$error":"#REF!"}},{"$f":"SUM(#REF!)","v":{"$error":"#REF!"}},{"$f":"SUM(#REF!)","v":{"$error":"#REF!"}},{"$f":"SUM(#REF!)","v":{"$error":"#REF!"}},{"$f":"SUM(#REF!)","v":{"$error":"#REF!"}},{"$f":"SUM(#REF!)","v":{"$error":"#REF!"}},{"$f":"SUM(#REF!)","v":{"$error":"#REF!"}},{"$f":"SUM(#REF!)","v":{"$error":"#REF!"}},{"$f":"SUM(#REF!)","v":{"$error":"#REF!"}},{"$f":"SUM(#REF!)","v":{"$error":"#REF!"}},{"$f":"SUM(#REF!)","v":{"$error":"#REF!"}},{"$f":"SUM(#REF!)","v":{"$error":"#REF!"}},{"$f":"SUM(#REF!)","v":{"$error":"#REF!"}},{"$f":"SUM(#REF!)","v":{"$error":"#REF!"}},{"$f":"SUM(#REF!)","v":{"$error":"#REF!"}},{"$f":"SUM(#REF!)","v":{"$error":"#REF!"}},{"$f":"SUM(#REF!)","v":{"$error":"#REF!"}},{"$f":"SUM(#REF!)","v":{"$error":"#REF!"}},{"$f":"SUM(#REF!)","v":{"$error":"#REF!"}},{"$f":"SUM(#REF!)","v":{"$error":"#REF!"}},{"$f":"SUM(#REF!)","v":{"$error":"#REF!"}},{"$f":"SUM(#REF!)","v":{"$error":"#REF!"}},{"$f":"SUM(#REF!)","v":{"$error":"#REF!"}},{"$f":"SUM(#REF!)","v":{"$error":"#REF!"}},{"$f":"SUM(#REF!)","v":{"$error":"#REF!"}},{"$f":"SUM(#REF!)","v":{"$error":"#REF!"}},{"$f":"SUM(#REF!)","v":{"$error":"#REF!"}},{"$f":"SUM(#REF!)","v":{"$error":"#REF!"}},{"$f":"SUM(#REF!)","v":{"$error":"#REF!"}},{"$f":"SUM(#REF!)","v":{"$error":"#REF!"}},{"$f":"SUM(#REF!)","v":{"$error":"#REF!"}},{"$f":"SUM(#REF!)","v":{"$error":"#REF!"}},{"$f":"SUM(#REF!)","v":{"$error":"#REF!"}},{"$f":"SUM(#REF!)","v":{"$error":"#REF!"}},{"$f":"SUM(#REF!)","v":{"$error":"#REF!"}},{"$f":"SUM(#REF!)","v":{"$error":"#REF!"}},{"$f":"SUM(#REF!)","v":{"$error":"#REF!"}},{"$f":"SUM(#REF!)","v":{"$error":"#REF!"}},{"$f":"SUM(#REF!)","v":{"$error":"#REF!"}},{"$f":"SUM(#REF!)","v":{"$error":"#REF!"}},{"$f":"SUM(#REF!)","v":{"$error":"#REF!"}},{"$f":"SUM(#REF!)","v":{"$error":"#REF!"}},{"$f":"SUM(#REF!)","v":{"$error":"#REF!"}},{"$f":"SUM(#REF!)","v":{"$error":"#REF!"}},{"$f":"SUM(#REF!)","v":{"$error":"#REF!"}},{"$f":"SUM(#REF!)","v":{"$error":"#REF!"}},{"$f":"SUM(#REF!)","v":{"$error":"#REF!"}},{"$f":"SUM(#REF!)","v":{"$error":"#REF!"}},{"$f":"SUM(#REF!)","v":{"$error":"#REF!"}},{"$f":"SUM(#REF!)","v":{"$error":"#REF!"}},{"$f":"SUM(#REF!)","v":{"$error":"#REF!"}},{"$f":"SUM(#REF!)","v":{"$error":"#REF!"}},{"$f":"SUM(#REF!)","v":{"$error":"#REF!"}},{"$f":"SUM(#REF!)","v":{"$error":"#REF!"}},{"$f":"SUM(#REF!)","v":{"$error":"#REF!"}},{"$f":"SUM(#REF!)","v":{"$error":"#REF!"}},{"$f":"SUM(#REF!)","v":{"$error":"#REF!"}},{"$f":"SUM(#REF!)","v":{"$error":"#REF!"}},{"$f":"SUM(#REF!)","v":{"$error":"#REF!"}},{"$f":"SUM(#REF!)","v":{"$error":"#REF!"}},{"$f":"SUM(#REF!)","v":{"$error":"#REF!"}},{"$f":"SUM(#REF!)","v":{"$error":"#REF!"}},{"$f":"SUM(#REF!)","v":{"$error":"#REF!"}},{"$f":"SUM(#REF!)","v":{"$error":"#REF!"}},{"$f":"SUM(#REF!)","v":{"$error":"#REF!"}},{"$f":"SUM(#REF!)","v":{"$error":"#REF!"}},{"$f":"SUM(#REF!)","v":{"$error":"#REF!"}},{"$f":"SUM(#REF!)","v":{"$error":"#REF!"}},{"$f":"SUM(#REF!)","v":{"$error":"#REF!"}},{"$f":"SUM(#REF!)","v":{"$error":"#REF!"}},{"$f":"SUM(#REF!)","v":{"$error":"#REF!"}},{"$f":"SUM(#REF!)","v":{"$error":"#REF!"}},{"$f":"SUM(#REF!)","v":{"$error":"#REF!"}},{"$f":"SUM(#REF!)","v":{"$error":"#REF!"}},{"$f":"SUM(#REF!)","v":{"$error":"#REF!"}},{"$f":"SUM(#REF!)","v":{"$error":"#REF!"}},{"$f":"SUM(#REF!)","v":{"$error":"#REF!"}},{"$f":"SUM(#REF!)","v":{"$error":"#REF!"}},{"$f":"SUM(#REF!)","v":{"$error":"#REF!"}},{"$f":"SUM(#REF!)","v":{"$error":"#REF!"}},{"$f":"SUM(#REF!)","v":{"$error":"#REF!"}},{"$f":"SUM(#REF!)","v":{"$error":"#REF!"}},{"$f":"SUM(#REF!)","v":{"$error":"#REF!"}},{"$f":"SUM(#REF!)","v":{"$error":"#REF!"}},{"$f":"SUM(#REF!)","v":{"$error":"#REF!"}},{"$f":"SUM(#REF!)","v":{"$error":"#REF!"}},{"$f":"SUM(#REF!)","v":{"$error":"#REF!"}},{"$f":"SUM(#REF!)","v":{"$error":"#REF!"}},{"$f":"SUM(#REF!)","v":{"$error":"#REF!"}},{"$f":"SUM(#REF!)","v":{"$error":"#REF!"}},{"$f":"SUM(#REF!)","v":{"$error":"#REF!"}},{"$f":"SUM(#REF!)","v":{"$error":"#REF!"}},{"$f":"SUM(#REF!)","v":{"$error":"#REF!"}},{"$f":"SUM(#REF!)","v":{"$error":"#REF!"}},{"$f":"SUM(#REF!)","v":{"$error":"#REF!"}},{"$f":"SUM(#REF!)","v":{"$error":"#REF!"}},{"$f":"SUM(#REF!)","v":{"$error":"#REF!"}},{"$f":"SUM(#REF!)","v":{"$error":"#REF!"}},{"$f":"SUM(#REF!)","v":{"$error":"#REF!"}},{"$f":"SUM(#REF!)","v":{"$error":"#REF!"}},{"$f":"SUM(#REF!)","v":{"$error":"#REF!"}},{"$f":"SUM(#REF!)","v":{"$error":"#REF!"}},{"$f":"SUM(#REF!)","v":{"$error":"#REF!"}},{"$f":"SUM(#REF!)","v":{"$error":"#REF!"}},{"$f":"SUM(#REF!)","v":{"$error":"#REF!"}},{"$f":"SUM(#REF!)","v":{"$error":"#REF!"}},{"$f":"SUM(#REF!)","v":{"$error":"#REF!"}},{"$f":"SUM(#REF!)","v":{"$error":"#REF!"}},{"$f":"SUM(#REF!)","v":{"$error":"#REF!"}},{"$f":"SUM(#REF!)","v":{"$error":"#REF!"}},{"$f":"SUM(#REF!)","v":{"$error":"#REF!"}},{"$f":"SUM(#REF!)","v":{"$error":"#REF!"}},{"$f":"SUM(#REF!)","v":{"$error":"#REF!"}},{"$f":"SUM(#REF!)","v":{"$error":"#REF!"}},{"$f":"SUM(#REF!)","v":{"$error":"#REF!"}},{"$f":"SUM(#REF!)","v":{"$error":"#REF!"}},{"$f":"SUM(#REF!)","v":{"$error":"#REF!"}},{"$f":"SUM(#REF!)","v":{"$error":"#REF!"}},{"$f":"SUM(#REF!)","v":{"$error":"#REF!"}},{"$f":"SUM(#REF!)","v":{"$error":"#REF!"}},{"$f":"SUM(#REF!)","v":{"$error":"#REF!"}},{"$f":"SUM(#REF!)","v":{"$error":"#REF!"}},{"$f":"SUM(#REF!)","v":{"$error":"#REF!"}},{"$f":"SUM(#REF!)","v":{"$error":"#REF!"}},{"$f":"SUM(#REF!)","v":{"$error":"#REF!"}},{"$f":"SUM(#REF!)","v":{"$error":"#REF!"}},{"$f":"SUM(#REF!)","v":{"$error":"#REF!"}},{"$f":"SUM(#REF!)","v":{"$error":"#REF!"}},{"$f":"SUM(#REF!)","v":{"$error":"#REF!"}},{"$f":"SUM(#REF!)","v":{"$error":"#REF!"}},{"$f":"SUM(#REF!)","v":{"$error":"#REF!"}},{"$f":"SUM(#REF!)","v":{"$error":"#REF!"}},{"$f":"SUM(#REF!)","v":{"$error":"#REF!"}},{"$f":"SUM(#REF!)","v":{"$error":"#REF!"}},{"$f":"SUM(#REF!)","v":{"$error":"#REF!"}},{"$f":"SUM(#REF!)","v":{"$error":"#REF!"}},{"$f":"SUM(#REF!)","v":{"$error":"#REF!"}},{"$f":"SUM(#REF!)","v":{"$error":"#REF!"}},{"$f":"SUM(#REF!)","v":{"$error":"#REF!"}},{"$f":"SUM(#REF!)","v":{"$error":"#REF!"}},{"$f":"SUM(#REF!)","v":{"$error":"#REF!"}},{"$f":"SUM(#REF!)","v":{"$error":"#REF!"}},{"$f":"SUM(#REF!)","v":{"$error":"#REF!"}},{"$f":"SUM(#REF!)","v":{"$error":"#REF!"}},{"$f":"SUM(#REF!)","v":{"$error":"#REF!"}},{"$f":"SUM(#REF!)","v":{"$error":"#REF!"}},{"$f":"SUM(#REF!)","v":{"$error":"#REF!"}},{"$f":"SUM(#REF!)","v":{"$error":"#REF!"}},{"$f":"SUM(#REF!)","v":{"$error":"#REF!"}},{"$f":"SUM(#REF!)","v":{"$error":"#REF!"}},{"$f":"SUM(#REF!)","v":{"$error":"#REF!"}},{"$f":"SUM(#REF!)","v":{"$error":"#REF!"}},{"$f":"SUM(#REF!)","v":{"$error":"#REF!"}},{"$f":"SUM(#REF!)","v":{"$error":"#REF!"}},{"$f":"SUM(#REF!)","v":{"$error":"#REF!"}},{"$f":"SUM(#REF!)","v":{"$error":"#REF!"}},{"$f":"SUM(#REF!)","v":{"$error":"#REF!"}},{"$f":"SUM(#REF!)","v":{"$error":"#REF!"}},{"$f":"SUM(#REF!)","v":{"$error":"#REF!"}},{"$f":"SUM(#REF!)","v":{"$error":"#REF!"}},{"$f":"SUM(#REF!)","v":{"$error":"#REF!"}},{"$f":"SUM(#REF!)","v":{"$error":"#REF!"}},{"$f":"SUM(#REF!)","v":{"$error":"#REF!"}},{"$f":"SUM(#REF!)","v":{"$error":"#REF!"}},{"$f":"SUM(#REF!)","v":{"$error":"#REF!"}},{"$f":"SUM(#REF!)","v":{"$error":"#REF!"}},{"$f":"SUM(#REF!)","v":{"$error":"#REF!"}},{"$f":"SUM(#REF!)","v":{"$error":"#REF!"}},{"$f":"SUM(#REF!)","v":{"$error":"#REF!"}},{"$f":"SUM(#REF!)","v":{"$error":"#REF!"}},{"$f":"SUM(#REF!)","v":{"$error":"#REF!"}},{"$f":"SUM(#REF!)","v":{"$error":"#REF!"}},{"$f":"SUM(#REF!)","v":{"$error":"#REF!"}},{"$f":"SUM(#REF!)","v":{"$error":"#REF!"}},{"$f":"SUM(#REF!)","v":{"$error":"#REF!"}},{"$f":"SUM(#REF!)","v":{"$error":"#REF!"}},{"$f":"SUM(#REF!)","v":{"$error":"#REF!"}},{"$f":"SUM(#REF!)","v":{"$error":"#REF!"}},{"$f":"SUM(#REF!)","v":{"$error":"#REF!"}},{"$f":"SUM(#REF!)","v":{"$error":"#REF!"}},{"$f":"SUM(#REF!)","v":{"$error":"#REF!"}},{"$f":"SUM(#REF!)","v":{"$error":"#REF!"}},{"$f":"SUM(#REF!)","v":{"$error":"#REF!"}},{"$f":"SUM(#REF!)","v":{"$error":"#REF!"}},{"$f":"SUM(#REF!)","v":{"$error":"#REF!"}},{"$f":"SUM(#REF!)","v":{"$error":"#REF!"}},{"$f":"SUM(#REF!)","v":{"$error":"#REF!"}},{"$f":"SUM(#REF!)","v":{"$error":"#REF!"}},{"$f":"SUM(#REF!)","v":{"$error":"#REF!"}},{"$f":"SUM(#REF!)","v":{"$error":"#REF!"}},{"$f":"SUM(#REF!)","v":{"$error":"#REF!"}},{"$f":"SUM(#REF!)","v":{"$error":"#REF!"}},{"$f":"SUM(#REF!)","v":{"$error":"#REF!"}},{"$f":"SUM(#REF!)","v":{"$error":"#REF!"}},{"$f":"SUM(#REF!)","v":{"$error":"#REF!"}},{"$f":"SUM(#REF!)","v":{"$error":"#REF!"}},{"$f":"SUM(#REF!)","v":{"$error":"#REF!"}},{"$f":"SUM(#REF!)","v":{"$error":"#REF!"}},{"$f":"SUM(#REF!)","v":{"$error":"#REF!"}},{"$f":"SUM(#REF!)","v":{"$error":"#REF!"}},{"$f":"SUM(#REF!)","v":{"$error":"#REF!"}},{"$f":"SUM(#REF!)","v":{"$error":"#REF!"}},{"$f":"SUM(#REF!)","v":{"$error":"#REF!"}},{"$f":"SUM(#REF!)","v":{"$error":"#REF!"}},{"$f":"SUM(#REF!)","v":{"$error":"#REF!"}},{"$f":"SUM(#REF!)","v":{"$error":"#REF!"}},{"$f":"SUM(#REF!)","v":{"$error":"#REF!"}},{"$f":"SUM(#REF!)","v":{"$error":"#REF!"}},{"$f":"SUM(#REF!)","v":{"$error":"#REF!"}},{"$f":"SUM(#REF!)","v":{"$error":"#REF!"}},{"$f":"SUM(#REF!)","v":{"$error":"#REF!"}},{"$f":"SUM(#REF!)","v":{"$error":"#REF!"}},{"$f":"SUM(#REF!)","v":{"$error":"#REF!"}},{"$f":"SUM(#REF!)","v":{"$error":"#REF!"}},{"$f":"SUM(#REF!)","v":{"$error":"#REF!"}},{"$f":"SUM(#REF!)","v":{"$error":"#REF!"}},{"$f":"SUM(#REF!)","v":{"$error":"#REF!"}},{"$f":"SUM(#REF!)","v":{"$error":"#REF!"}},{"$f":"SUM(#REF!)","v":{"$error":"#REF!"}},{"$f":"SUM(#REF!)","v":{"$error":"#REF!"}},{"$f":"SUM(#REF!)","v":{"$error":"#REF!"}},{"$f":"SUM(#REF!)","v":{"$error":"#REF!"}},{"$f":"SUM(#REF!)","v":{"$error":"#REF!"}},{"$f":"SUM(#REF!)","v":{"$error":"#REF!"}},{"$f":"SUM(#REF!)","v":{"$error":"#REF!"}},{"$f":"SUM(#REF!)","v":{"$error":"#REF!"}},{"$f":"SUM(#REF!)","v":{"$error":"#REF!"}},{"$f":"SUM(#REF!)","v":{"$error":"#REF!"}},{"$f":"SUM(#REF!)","v":{"$error":"#REF!"}},{"$f":"SUM(#REF!)","v":{"$error":"#REF!"}},{"$f":"SUM(#REF!)","v":{"$error":"#REF!"}},{"$f":"SUM(#REF!)","v":{"$error":"#REF!"}},{"$f":"SUM(#REF!)","v":{"$error":"#REF!"}},{"$f":"SUM(#REF!)","v":{"$error":"#REF!"}},{"$f":"SUM(#REF!)","v":{"$error":"#REF!"}},{"$f":"SUM(#REF!)","v":{"$error":"#REF!"}},{"$f":"SUM(#REF!)","v":{"$error":"#REF!"}},{"$f":"SUM(#REF!)","v":{"$error":"#REF!"}},{"$f":"SUM(#REF!)","v":{"$error":"#REF!"}},{"$f":"SUM(#REF!)","v":{"$error":"#REF!"}},{"$f":"SUM(#REF!)","v":{"$error":"#REF!"}},{"$f":"SUM(#REF!)","v":{"$error":"#REF!"}},{"$f":"SUM(#REF!)","v":{"$error":"#REF!"}},{"$f":"SUM(#REF!)","v":{"$error":"#REF!"}},{"$f":"SUM(#REF!)","v":{"$error":"#REF!"}},{"$f":"SUM(#REF!)","v":{"$error":"#REF!"}},{"$f":"SUM(#REF!)","v":{"$error":"#REF!"}},{"$f":"SUM(#REF!)","v":{"$error":"#REF!"}},{"$f":"SUM(#REF!)","v":{"$error":"#REF!"}},{"$f":"SUM(#REF!)","v":{"$error":"#REF!"}},{"$f":"SUM(#REF!)","v":{"$error":"#REF!"}},{"$f":"SUM(#REF!)","v":{"$error":"#REF!"}},{"$f":"SUM(#REF!)","v":{"$error":"#REF!"}},{"$f":"SUM(#REF!)","v":{"$error":"#REF!"}},{"$f":"SUM(#REF!)","v":{"$error":"#REF!"}},{"$f":"SUM(#REF!)","v":{"$error":"#REF!"}},{"$f":"SUM(#REF!)","v":{"$error":"#REF!"}},{"$f":"SUM(#REF!)","v":{"$error":"#REF!"}},{"$f":"SUM(#REF!)","v":{"$error":"#REF!"}},{"$f":"SUM(#REF!)","v":{"$error":"#REF!"}},{"$f":"SUM(#REF!)","v":{"$error":"#REF!"}},{"$f":"SUM(#REF!)","v":{"$error":"#REF!"}},{"$f":"SUM(#REF!)","v":{"$error":"#REF!"}},{"$f":"SUM(#REF!)","v":{"$error":"#REF!"}},{"$f":"SUM(#REF!)","v":{"$error":"#REF!"}},{"$f":"SUM(#REF!)","v":{"$error":"#REF!"}},{"$f":"SUM(#REF!)","v":{"$error":"#REF!"}},{"$f":"SUM(#REF!)","v":{"$error":"#REF!"}},{"$f":"SUM(#REF!)","v":{"$error":"#REF!"}},{"$f":"SUM(#REF!)","v":{"$error":"#REF!"}},{"$f":"SUM(#REF!)","v":{"$error":"#REF!"}},{"$f":"SUM(#REF!)","v":{"$error":"#REF!"}},{"$f":"SUM(#REF!)","v":{"$error":"#REF!"}},{"$f":"SUM(#REF!)","v":{"$error":"#REF!"}},{"$f":"SUM(#REF!)","v":{"$error":"#REF!"}},{"$f":"SUM(#REF!)","v":{"$error":"#REF!"}},{"$f":"SUM(#REF!)","v":{"$error":"#REF!"}},{"$f":"SUM(#REF!)","v":{"$error":"#REF!"}},{"$f":"SUM(#REF!)","v":{"$error":"#REF!"}},{"$f":"SUM(#REF!)","v":{"$error":"#REF!"}},{"$f":"SUM(#REF!)","v":{"$error":"#REF!"}},{"$f":"SUM(#REF!)","v":{"$error":"#REF!"}},{"$f":"SUM(#REF!)","v":{"$error":"#REF!"}},{"$f":"SUM(#REF!)","v":{"$error":"#REF!"}},{"$f":"SUM(#REF!)","v":{"$error":"#REF!"}},{"$f":"SUM(#REF!)","v":{"$error":"#REF!"}},{"$f":"SUM(#REF!)","v":{"$error":"#REF!"}},{"$f":"SUM(#REF!)","v":{"$error":"#REF!"}},{"$f":"SUM(#REF!)","v":{"$error":"#REF!"}},{"$f":"SUM(#REF!)","v":{"$error":"#REF!"}},{"$f":"SUM(#REF!)","v":{"$error":"#REF!"}},{"$f":"SUM(#REF!)","v":{"$error":"#REF!"}},{"$f":"SUM(#REF!)","v":{"$error":"#REF!"}},{"$f":"SUM(#REF!)","v":{"$error":"#REF!"}},{"$f":"SUM(#REF!)","v":{"$error":"#REF!"}},{"$f":"SUM(#REF!)","v":{"$error":"#REF!"}},{"$f":"SUM(#REF!)","v":{"$error":"#REF!"}},{"$f":"SUM(#REF!)","v":{"$error":"#REF!"}},{"$f":"SUM(#REF!)","v":{"$error":"#REF!"}},{"$f":"SUM(#REF!)","v":{"$error":"#REF!"}},{"$f":"SUM(#REF!)","v":{"$error":"#REF!"}},{"$f":"SUM(#REF!)","v":{"$error":"#REF!"}},{"$f":"SUM(#REF!)","v":{"$error":"#REF!"}},{"$f":"SUM(#REF!)","v":{"$error":"#REF!"}},{"$f":"SUM(#REF!)","v":{"$error":"#REF!"}},{"$f":"SUM(#REF!)","v":{"$error":"#REF!"}},{"$f":"SUM(#REF!)","v":{"$error":"#REF!"}},{"$f":"SUM(#REF!)","v":{"$error":"#REF!"}},{"$f":"SUM(#REF!)","v":{"$error":"#REF!"}},{"$f":"SUM(#REF!)","v":{"$error":"#REF!"}},{"$f":"SUM(#REF!)","v":{"$error":"#REF!"}},{"$f":"SUM(#REF!)","v":{"$error":"#REF!"}},{"$f":"SUM(#REF!)","v":{"$error":"#REF!"}},{"$f":"SUM(#REF!)","v":{"$error":"#REF!"}},{"$f":"SUM(#REF!)","v":{"$error":"#REF!"}},{"$f":"SUM(#REF!)","v":{"$error":"#REF!"}},{"$f":"SUM(#REF!)","v":{"$error":"#REF!"}},{"$f":"SUM(#REF!)","v":{"$error":"#REF!"}},{"$f":"SUM(#REF!)","v":{"$error":"#REF!"}},{"$f":"SUM(#REF!)","v":{"$error":"#REF!"}},{"$f":"SUM(#REF!)","v":{"$error":"#REF!"}},{"$f":"SUM(#REF!)","v":{"$error":"#REF!"}},{"$f":"SUM(#REF!)","v":{"$error":"#REF!"}},{"$f":"SUM(#REF!)","v":{"$error":"#REF!"}},{"$f":"SUM(#REF!)","v":{"$error":"#REF!"}},{"$f":"SUM(#REF!)","v":{"$error":"#REF!"}},{"$f":"SUM(#REF!)","v":{"$error":"#REF!"}},{"$f":"SUM(#REF!)","v":{"$error":"#REF!"}},{"$f":"SUM(#REF!)","v":{"$error":"#REF!"}},{"$f":"SUM(#REF!)","v":{"$error":"#REF!"}},{"$f":"SUM(#REF!)","v":{"$error":"#REF!"}},{"$f":"SUM(#REF!)","v":{"$error":"#REF!"}},{"$f":"SUM(#REF!)","v":{"$error":"#REF!"}},{"$f":"SUM(#REF!)","v":{"$error":"#REF!"}},{"$f":"SUM(#REF!)","v":{"$error":"#REF!"}},{"$f":"SUM(#REF!)","v":{"$error":"#REF!"}},{"$f":"SUM(#REF!)","v":{"$error":"#REF!"}},{"$f":"SUM(#REF!)","v":{"$error":"#REF!"}},{"$f":"SUM(#REF!)","v":{"$error":"#REF!"}},{"$f":"SUM(#REF!)","v":{"$error":"#REF!"}},{"$f":"SUM(#REF!)","v":{"$error":"#REF!"}},{"$f":"SUM(#REF!)","v":{"$error":"#REF!"}},{"$f":"SUM(#REF!)","v":{"$error":"#REF!"}},{"$f":"SUM(#REF!)","v":{"$error":"#REF!"}},{"$f":"SUM(#REF!)","v":{"$error":"#REF!"}},{"$f":"SUM(#REF!)","v":{"$error":"#REF!"}},{"$f":"SUM(#REF!)","v":{"$error":"#REF!"}},{"$f":"SUM(#REF!)","v":{"$error":"#REF!"}},{"$f":"SUM(#REF!)","v":{"$error":"#REF!"}},{"$f":"SUM(#REF!)","v":{"$error":"#REF!"}},{"$f":"SUM(#REF!)","v":{"$error":"#REF!"}},{"$f":"SUM(#REF!)","v":{"$error":"#REF!"}},{"$f":"SUM(#REF!)","v":{"$error":"#REF!"}},{"$f":"SUM(#REF!)","v":{"$error":"#REF!"}},{"$f":"SUM(#REF!)","v":{"$error":"#REF!"}},{"$f":"SUM(#REF!)","v":{"$error":"#REF!"}},{"$f":"SUM(#REF!)","v":{"$error":"#REF!"}},{"$f":"SUM(#REF!)","v":{"$error":"#REF!"}},{"$f":"SUM(#REF!)","v":{"$error":"#REF!"}},{"$f":"SUM(#REF!)","v":{"$error":"#REF!"}},{"$f":"SUM(#REF!)","v":{"$error":"#REF!"}},{"$f":"SUM(#REF!)","v":{"$error":"#REF!"}},{"$f":"SUM(#REF!)","v":{"$error":"#REF!"}},{"$f":"SUM(#REF!)","v":{"$error":"#REF!"}},{"$f":"SUM(#REF!)","v":{"$error":"#REF!"}},{"$f":"SUM(#REF!)","v":{"$error":"#REF!"}},{"$f":"SUM(#REF!)","v":{"$error":"#REF!"}},{"$f":"SUM(#REF!)","v":{"$error":"#REF!"}},{"$f":"SUM(#REF!)","v":{"$error":"#REF!"}},{"$f":"SUM(#REF!)","v":{"$error":"#REF!"}},{"$f":"SUM(#REF!)","v":{"$error":"#REF!"}},{"$f":"SUM(#REF!)","v":{"$error":"#REF!"}},{"$f":"SUM(#REF!)","v":{"$error":"#REF!"}},{"$f":"SUM(#REF!)","v":{"$error":"#REF!"}},{"$f":"SUM(#REF!)","v":{"$error":"#REF!"}},{"$f":"SUM(#REF!)","v":{"$error":"#REF!"}},{"$f":"SUM(#REF!)","v":{"$error":"#REF!"}},{"$f":"SUM(#REF!)","v":{"$error":"#REF!"}},{"$f":"SUM(#REF!)","v":{"$error":"#REF!"}},{"$f":"SUM(#REF!)","v":{"$error":"#REF!"}},{"$f":"SUM(#REF!)","v":{"$error":"#REF!"}},{"$f":"SUM(#REF!)","v":{"$error":"#REF!"}},{"$f":"SUM(#REF!)","v":{"$error":"#REF!"}},{"$f":"SUM(#REF!)","v":{"$error":"#REF!"}},{"$f":"SUM(#REF!)","v":{"$error":"#REF!"}},{"$f":"SUM(#REF!)","v":{"$error":"#REF!"}},{"$f":"SUM(#REF!)","v":{"$error":"#REF!"}},{"$f":"SUM(#REF!)","v":{"$error":"#REF!"}},{"$f":"SUM(#REF!)","v":{"$error":"#REF!"}},{"$f":"SUM(#REF!)","v":{"$error":"#REF!"}},{"$f":"SUM(#REF!)","v":{"$error":"#REF!"}},{"$f":"SUM(#REF!)","v":{"$error":"#REF!"}},{"$f":"SUM(#REF!)","v":{"$error":"#REF!"}},{"$f":"SUM(#REF!)","v":{"$error":"#REF!"}},{"$f":"SUM(#REF!)","v":{"$error":"#REF!"}},{"$f":"SUM(#REF!)","v":{"$error":"#REF!"}},{"$f":"SUM(#REF!)","v":{"$error":"#REF!"}},{"$f":"SUM(#REF!)","v":{"$error":"#REF!"}},{"$f":"SUM(#REF!)","v":{"$error":"#REF!"}},{"$f":"SUM(#REF!)","v":{"$error":"#REF!"}},{"$f":"SUM(#REF!)","v":{"$error":"#REF!"}},{"$f":"SUM(#REF!)","v":{"$error":"#REF!"}},{"$f":"SUM(#REF!)","v":{"$error":"#REF!"}},{"$f":"SUM(#REF!)","v":{"$error":"#REF!"}},{"$f":"SUM(#REF!)","v":{"$error":"#REF!"}},{"$f":"SUM(#REF!)","v":{"$error":"#REF!"}},{"$f":"SUM(#REF!)","v":{"$error":"#REF!"}},{"$f":"SUM(#REF!)","v":{"$error":"#REF!"}},{"$f":"SUM(#REF!)","v":{"$error":"#REF!"}},{"$f":"SUM(#REF!)","v":{"$error":"#REF!"}},{"$f":"SUM(#REF!)","v":{"$error":"#REF!"}},{"$f":"SUM(#REF!)","v":{"$error":"#REF!"}},{"$f":"SUM(#REF!)","v":{"$error":"#REF!"}},{"$f":"SUM(#REF!)","v":{"$error":"#REF!"}},{"$f":"SUM(#REF!)","v":{"$error":"#REF!"}},{"$f":"SUM(#REF!)","v":{"$error":"#REF!"}},{"$f":"SUM(#REF!)","v":{"$error":"#REF!"}},{"$f":"SUM(#REF!)","v":{"$error":"#REF!"}},{"$f":"SUM(#REF!)","v":{"$error":"#REF!"}},{"$f":"SUM(#REF!)","v":{"$error":"#REF!"}},{"$f":"SUM(#REF!)","v":{"$error":"#REF!"}},{"$f":"SUM(#REF!)","v":{"$error":"#REF!"}},{"$f":"SUM(#REF!)","v":{"$error":"#REF!"}},{"$f":"SUM(#REF!)","v":{"$error":"#REF!"}},{"$f":"SUM(#REF!)","v":{"$error":"#REF!"}},{"$f":"SUM(#REF!)","v":{"$error":"#REF!"}},{"$f":"SUM(#REF!)","v":{"$error":"#REF!"}},{"$f":"SUM(#REF!)","v":{"$error":"#REF!"}},{"$f":"SUM(#REF!)","v":{"$error":"#REF!"}},{"$f":"SUM(#REF!)","v":{"$error":"#REF!"}},{"$f":"SUM(#REF!)","v":{"$error":"#REF!"}},{"$f":"SUM(#REF!)","v":{"$error":"#REF!"}},{"$f":"SUM(#REF!)","v":{"$error":"#REF!"}},{"$f":"SUM(#REF!)","v":{"$error":"#REF!"}},{"$f":"SUM(#REF!)","v":{"$error":"#REF!"}},{"$f":"SUM(#REF!)","v":{"$error":"#REF!"}},{"$f":"SUM(#REF!)","v":{"$error":"#REF!"}},{"$f":"SUM(#REF!)","v":{"$error":"#REF!"}},{"$f":"SUM(#REF!)","v":{"$error":"#REF!"}},{"$f":"SUM(#REF!)","v":{"$error":"#REF!"}},{"$f":"SUM(#REF!)","v":{"$error":"#REF!"}},{"$f":"SUM(#REF!)","v":{"$error":"#REF!"}},{"$f":"SUM(#REF!)","v":{"$error":"#REF!"}},{"$f":"SUM(#REF!)","v":{"$error":"#REF!"}},{"$f":"SUM(#REF!)","v":{"$error":"#REF!"}},{"$f":"SUM(#REF!)","v":{"$error":"#REF!"}},{"$f":"SUM(#REF!)","v":{"$error":"#REF!"}},{"$f":"SUM(#REF!)","v":{"$error":"#REF!"}},{"$f":"SUM(#REF!)","v":{"$error":"#REF!"}},{"$f":"SUM(#REF!)","v":{"$error":"#REF!"}},{"$f":"SUM(#REF!)","v":{"$error":"#REF!"}},{"$f":"SUM(#REF!)","v":{"$error":"#REF!"}},{"$f":"SUM(#REF!)","v":{"$error":"#REF!"}},{"$f":"SUM(#REF!)","v":{"$error":"#REF!"}},{"$f":"SUM(#REF!)","v":{"$error":"#REF!"}},{"$f":"SUM(#REF!)","v":{"$error":"#REF!"}},{"$f":"SUM(#REF!)","v":{"$error":"#REF!"}},{"$f":"SUM(#REF!)","v":{"$error":"#REF!"}},{"$f":"SUM(#REF!)","v":{"$error":"#REF!"}},{"$f":"SUM(#REF!)","v":{"$error":"#REF!"}},{"$f":"SUM(#REF!)","v":{"$error":"#REF!"}},{"$f":"SUM(#REF!)","v":{"$error":"#REF!"}},{"$f":"SUM(#REF!)","v":{"$error":"#REF!"}},{"$f":"SUM(#REF!)","v":{"$error":"#REF!"}},{"$f":"SUM(#REF!)","v":{"$error":"#REF!"}},{"$f":"SUM(#REF!)","v":{"$error":"#REF!"}},{"$f":"SUM(#REF!)","v":{"$error":"#REF!"}},{"$f":"SUM(#REF!)","v":{"$error":"#REF!"}},{"$f":"SUM(#REF!)","v":{"$error":"#REF!"}},{"$f":"SUM(#REF!)","v":{"$error":"#REF!"}},{"$f":"SUM(#REF!)","v":{"$error":"#REF!"}},{"$f":"SUM(#REF!)","v":{"$error":"#REF!"}},{"$f":"SUM(#REF!)","v":{"$error":"#REF!"}},{"$f":"SUM(#REF!)","v":{"$error":"#REF!"}},{"$f":"SUM(#REF!)","v":{"$error":"#REF!"}},{"$f":"SUM(#REF!)","v":{"$error":"#REF!"}},{"$f":"SUM(#REF!)","v":{"$error":"#REF!"}},{"$f":"SUM(#REF!)","v":{"$error":"#REF!"}},{"$f":"SUM(#REF!)","v":{"$error":"#REF!"}},{"$f":"SUM(#REF!)","v":{"$error":"#REF!"}},{"$f":"SUM(#REF!)","v":{"$error":"#REF!"}},{"$f":"SUM(#REF!)","v":{"$error":"#REF!"}},{"$f":"SUM(#REF!)","v":{"$error":"#REF!"}},{"$f":"SUM(#REF!)","v":{"$error":"#REF!"}},{"$f":"SUM(#REF!)","v":{"$error":"#REF!"}},{"$f":"SUM(#REF!)","v":{"$error":"#REF!"}},{"$f":"SUM(#REF!)","v":{"$error":"#REF!"}},{"$f":"SUM(#REF!)","v":{"$error":"#REF!"}},{"$f":"SUM(#REF!)","v":{"$error":"#REF!"}},{"$f":"SUM(#REF!)","v":{"$error":"#REF!"}},{"$f":"SUM(#REF!)","v":{"$error":"#REF!"}},{"$f":"SUM(#REF!)","v":{"$error":"#REF!"}},{"$f":"SUM(#REF!)","v":{"$error":"#REF!"}},{"$f":"SUM(#REF!)","v":{"$error":"#REF!"}},{"$f":"SUM(#REF!)","v":{"$error":"#REF!"}},{"$f":"SUM(#REF!)","v":{"$error":"#REF!"}},{"$f":"SUM(#REF!)","v":{"$error":"#REF!"}},{"$f":"SUM(#REF!)","v":{"$error":"#REF!"}},{"$f":"SUM(#REF!)","v":{"$error":"#REF!"}},{"$f":"SUM(#REF!)","v":{"$error":"#REF!"}},{"$f":"SUM(#REF!)","v":{"$error":"#REF!"}},{"$f":"SUM(#REF!)","v":{"$error":"#REF!"}},{"$f":"SUM(#REF!)","v":{"$error":"#REF!"}},{"$f":"SUM(#REF!)","v":{"$error":"#REF!"}},{"$f":"SUM(#REF!)","v":{"$error":"#REF!"}},{"$f":"SUM(#REF!)","v":{"$error":"#REF!"}},{"$f":"SUM(#REF!)","v":{"$error":"#REF!"}},{"$f":"SUM(#REF!)","v":{"$error":"#REF!"}},{"$f":"SUM(#REF!)","v":{"$error":"#REF!"}},{"$f":"SUM(#REF!)","v":{"$error":"#REF!"}},{"$f":"SUM(#REF!)","v":{"$error":"#REF!"}},{"$f":"SUM(#REF!)","v":{"$error":"#REF!"}},{"$f":"SUM(#REF!)","v":{"$error":"#REF!"}},{"$f":"SUM(#REF!)","v":{"$error":"#REF!"}},{"$f":"SUM(#REF!)","v":{"$error":"#REF!"}},{"$f":"SUM(#REF!)","v":{"$error":"#REF!"}},{"$f":"SUM(#REF!)","v":{"$error":"#REF!"}},{"$f":"SUM(#REF!)","v":{"$error":"#REF!"}},{"$f":"SUM(#REF!)","v":{"$error":"#REF!"}},{"$f":"SUM(#REF!)","v":{"$error":"#REF!"}},{"$f":"SUM(#REF!)","v":{"$error":"#REF!"}},{"$f":"SUM(#REF!)","v":{"$error":"#REF!"}},{"$f":"SUM(#REF!)","v":{"$error":"#REF!"}},{"$f":"SUM(#REF!)","v":{"$error":"#REF!"}},{"$f":"SUM(#REF!)","v":{"$error":"#REF!"}},{"$f":"SUM(#REF!)","v":{"$error":"#REF!"}},{"$f":"SUM(#REF!)","v":{"$error":"#REF!"}},{"$f":"SUM(#REF!)","v":{"$error":"#REF!"}},{"$f":"SUM(#REF!)","v":{"$error":"#REF!"}},{"$f":"SUM(#REF!)","v":{"$error":"#REF!"}},{"$f":"SUM(#REF!)","v":{"$error":"#REF!"}},{"$f":"SUM(#REF!)","v":{"$error":"#REF!"}},{"$f":"SUM(#REF!)","v":{"$error":"#REF!"}},{"$f":"SUM(#REF!)","v":{"$error":"#REF!"}},{"$f":"SUM(#REF!)","v":{"$error":"#REF!"}},{"$f":"SUM(#REF!)","v":{"$error":"#REF!"}},{"$f":"SUM(#REF!)","v":{"$error":"#REF!"}},{"$f":"SUM(#REF!)","v":{"$error":"#REF!"}},{"$f":"SUM(#REF!)","v":{"$error":"#REF!"}},{"$f":"SUM(#REF!)","v":{"$error":"#REF!"}},{"$f":"SUM(#REF!)","v":{"$error":"#REF!"}},{"$f":"SUM(#REF!)","v":{"$error":"#REF!"}},{"$f":"SUM(#REF!)","v":{"$error":"#REF!"}},{"$f":"SUM(#REF!)","v":{"$error":"#REF!"}},{"$f":"SUM(#REF!)","v":{"$error":"#REF!"}},{"$f":"SUM(#REF!)","v":{"$error":"#REF!"}},{"$f":"SUM(#REF!)","v":{"$error":"#REF!"}},{"$f":"SUM(#REF!)","v":{"$error":"#REF!"}},{"$f":"SUM(#REF!)","v":{"$error":"#REF!"}},{"$f":"SUM(#REF!)","v":{"$error":"#REF!"}},{"$f":"SUM(#REF!)","v":{"$error":"#REF!"}},{"$f":"SUM(#REF!)","v":{"$error":"#REF!"}},{"$f":"SUM(#REF!)","v":{"$error":"#REF!"}},{"$f":"SUM(#REF!)","v":{"$error":"#REF!"}},{"$f":"SUM(#REF!)","v":{"$error":"#REF!"}},{"$f":"SUM(#REF!)","v":{"$error":"#REF!"}},{"$f":"SUM(#REF!)","v":{"$error":"#REF!"}},{"$f":"SUM(#REF!)","v":{"$error":"#REF!"}},{"$f":"SUM(#REF!)","v":{"$error":"#REF!"}},{"$f":"SUM(#REF!)","v":{"$error":"#REF!"}},{"$f":"SUM(#REF!)","v":{"$error":"#REF!"}},{"$f":"SUM(#REF!)","v":{"$error":"#REF!"}},{"$f":"SUM(#REF!)","v":{"$error":"#REF!"}},{"$f":"SUM(#REF!)","v":{"$error":"#REF!"}},{"$f":"SUM(#REF!)","v":{"$error":"#REF!"}},{"$f":"SUM(#REF!)","v":{"$error":"#REF!"}},{"$f":"SUM(#REF!)","v":{"$error":"#REF!"}},{"$f":"SUM(#REF!)","v":{"$error":"#REF!"}},{"$f":"SUM(#REF!)","v":{"$error":"#REF!"}},{"$f":"SUM(#REF!)","v":{"$error":"#REF!"}},{"$f":"SUM(#REF!)","v":{"$error":"#REF!"}},{"$f":"SUM(#REF!)","v":{"$error":"#REF!"}},{"$f":"SUM(#REF!)","v":{"$error":"#REF!"}},{"$f":"SUM(#REF!)","v":{"$error":"#REF!"}},{"$f":"SUM(#REF!)","v":{"$error":"#REF!"}},{"$f":"SUM(#REF!)","v":{"$error":"#REF!"}},{"$f":"SUM(#REF!)","v":{"$error":"#REF!"}},{"$f":"SUM(#REF!)","v":{"$error":"#REF!"}},{"$f":"SUM(#REF!)","v":{"$error":"#REF!"}},{"$f":"SUM(#REF!)","v":{"$error":"#REF!"}},{"$f":"SUM(#REF!)","v":{"$error":"#REF!"}},{"$f":"SUM(#REF!)","v":{"$error":"#REF!"}},{"$f":"SUM(#REF!)","v":{"$error":"#REF!"}},{"$f":"SUM(#REF!)","v":{"$error":"#REF!"}},{"$f":"SUM(#REF!)","v":{"$error":"#REF!"}},{"$f":"SUM(#REF!)","v":{"$error":"#REF!"}},{"$f":"SUM(#REF!)","v":{"$error":"#REF!"}},{"$f":"SUM(#REF!)","v":{"$error":"#REF!"}},{"$f":"SUM(#REF!)","v":{"$error":"#REF!"}},{"$f":"SUM(#REF!)","v":{"$error":"#REF!"}},{"$f":"SUM(#REF!)","v":{"$error":"#REF!"}},{"$f":"SUM(#REF!)","v":{"$error":"#REF!"}},{"$f":"SUM(#REF!)","v":{"$error":"#REF!"}},{"$f":"SUM(#REF!)","v":{"$error":"#REF!"}},{"$f":"SUM(#REF!)","v":{"$error":"#REF!"}},{"$f":"SUM(#REF!)","v":{"$error":"#REF!"}},{"$f":"SUM(#REF!)","v":{"$error":"#REF!"}},{"$f":"SUM(#REF!)","v":{"$error":"#REF!"}},{"$f":"SUM(#REF!)","v":{"$error":"#REF!"}},{"$f":"SUM(#REF!)","v":{"$error":"#REF!"}},{"$f":"SUM(#REF!)","v":{"$error":"#REF!"}},{"$f":"SUM(#REF!)","v":{"$error":"#REF!"}},{"$f":"SUM(#REF!)","v":{"$error":"#REF!"}},{"$f":"SUM(#REF!)","v":{"$error":"#REF!"}},{"$f":"SUM(#REF!)","v":{"$error":"#REF!"}},{"$f":"SUM(#REF!)","v":{"$error":"#REF!"}},{"$f":"SUM(#REF!)","v":{"$error":"#REF!"}},{"$f":"SUM(#REF!)","v":{"$error":"#REF!"}},{"$f":"SUM(#REF!)","v":{"$error":"#REF!"}},{"$f":"SUM(#REF!)","v":{"$error":"#REF!"}},{"$f":"SUM(#REF!)","v":{"$error":"#REF!"}},{"$f":"SUM(#REF!)","v":{"$error":"#REF!"}},{"$f":"SUM(#REF!)","v":{"$error":"#REF!"}},{"$f":"SUM(#REF!)","v":{"$error":"#REF!"}},{"$f":"SUM(#REF!)","v":{"$error":"#REF!"}},{"$f":"SUM(#REF!)","v":{"$error":"#REF!"}},{"$f":"SUM(#REF!)","v":{"$error":"#REF!"}},{"$f":"SUM(#REF!)","v":{"$error":"#REF!"}},{"$f":"SUM(#REF!)","v":{"$error":"#REF!"}},{"$f":"SUM(#REF!)","v":{"$error":"#REF!"}},{"$f":"SUM(#REF!)","v":{"$error":"#REF!"}},{"$f":"SUM(#REF!)","v":{"$error":"#REF!"}},{"$f":"SUM(#REF!)","v":{"$error":"#REF!"}},{"$f":"SUM(#REF!)","v":{"$error":"#REF!"}},{"$f":"SUM(#REF!)","v":{"$error":"#REF!"}},{"$f":"SUM(#REF!)","v":{"$error":"#REF!"}},{"$f":"SUM(#REF!)","v":{"$error":"#REF!"}},{"$f":"SUM(#REF!)","v":{"$error":"#REF!"}},{"$f":"SUM(#REF!)","v":{"$error":"#REF!"}},{"$f":"SUM(#REF!)","v":{"$error":"#REF!"}},{"$f":"SUM(#REF!)","v":{"$error":"#REF!"}},{"$f":"SUM(#REF!)","v":{"$error":"#REF!"}},{"$f":"SUM(#REF!)","v":{"$error":"#REF!"}},{"$f":"SUM(#REF!)","v":{"$error":"#REF!"}},{"$f":"SUM(#REF!)","v":{"$error":"#REF!"}},{"$f":"SUM(#REF!)","v":{"$error":"#REF!"}},{"$f":"SUM(#REF!)","v":{"$error":"#REF!"}},{"$f":"SUM(#REF!)","v":{"$error":"#REF!"}},{"$f":"SUM(#REF!)","v":{"$error":"#REF!"}},{"$f":"SUM(#REF!)","v":{"$error":"#REF!"}},{"$f":"SUM(#REF!)","v":{"$error":"#REF!"}},{"$f":"SUM(#REF!)","v":{"$error":"#REF!"}},{"$f":"SUM(#REF!)","v":{"$error":"#REF!"}},{"$f":"SUM(#REF!)","v":{"$error":"#REF!"}},{"$f":"SUM(#REF!)","v":{"$error":"#REF!"}},{"$f":"SUM(#REF!)","v":{"$error":"#REF!"}},{"$f":"SUM(#REF!)","v":{"$error":"#REF!"}},{"$f":"SUM(#REF!)","v":{"$error":"#REF!"}},{"$f":"SUM(#REF!)","v":{"$error":"#REF!"}},{"$f":"SUM(#REF!)","v":{"$error":"#REF!"}},{"$f":"SUM(#REF!)","v":{"$error":"#REF!"}},{"$f":"SUM(#REF!)","v":{"$error":"#REF!"}},{"$f":"SUM(#REF!)","v":{"$error":"#REF!"}},{"$f":"SUM(#REF!)","v":{"$error":"#REF!"}},{"$f":"SUM(#REF!)","v":{"$error":"#REF!"}},{"$f":"SUM(#REF!)","v":{"$error":"#REF!"}},{"$f":"SUM(#REF!)","v":{"$error":"#REF!"}},{"$f":"SUM(#REF!)","v":{"$error":"#REF!"}},{"$f":"SUM(#REF!)","v":{"$error":"#REF!"}},{"$f":"SUM(#REF!)","v":{"$error":"#REF!"}},{"$f":"SUM(#REF!)","v":{"$error":"#REF!"}},{"$f":"SUM(#REF!)","v":{"$error":"#REF!"}},{"$f":"SUM(#REF!)","v":{"$error":"#REF!"}},{"$f":"SUM(#REF!)","v":{"$error":"#REF!"}},{"$f":"SUM(#REF!)","v":{"$error":"#REF!"}},{"$f":"SUM(#REF!)","v":{"$error":"#REF!"}},{"$f":"SUM(#REF!)","v":{"$error":"#REF!"}},{"$f":"SUM(#REF!)","v":{"$error":"#REF!"}},{"$f":"SUM(#REF!)","v":{"$error":"#REF!"}},{"$f":"SUM(#REF!)","v":{"$error":"#REF!"}},{"$f":"SUM(#REF!)","v":{"$error":"#REF!"}},{"$f":"SUM(#REF!)","v":{"$error":"#REF!"}},{"$f":"SUM(#REF!)","v":{"$error":"#REF!"}},{"$f":"SUM(#REF!)","v":{"$error":"#REF!"}},{"$f":"SUM(#REF!)","v":{"$error":"#REF!"}},{"$f":"SUM(#REF!)","v":{"$error":"#REF!"}},{"$f":"SUM(#REF!)","v":{"$error":"#REF!"}},{"$f":"SUM(#REF!)","v":{"$error":"#REF!"}},{"$f":"SUM(#REF!)","v":{"$error":"#REF!"}},{"$f":"SUM(#REF!)","v":{"$error":"#REF!"}},{"$f":"SUM(#REF!)","v":{"$error":"#REF!"}},{"$f":"SUM(#REF!)","v":{"$error":"#REF!"}},{"$f":"SUM(#REF!)","v":{"$error":"#REF!"}},{"$f":"SUM(#REF!)","v":{"$error":"#REF!"}},{"$f":"SUM(#REF!)","v":{"$error":"#REF!"}},{"$f":"SUM(#REF!)","v":{"$error":"#REF!"}},{"$f":"SUM(#REF!)","v":{"$error":"#REF!"}},{"$f":"SUM(#REF!)","v":{"$error":"#REF!"}},{"$f":"SUM(#REF!)","v":{"$error":"#REF!"}},{"$f":"SUM(#REF!)","v":{"$error":"#REF!"}},{"$f":"SUM(#REF!)","v":{"$error":"#REF!"}},{"$f":"SUM(#REF!)","v":{"$error":"#REF!"}},{"$f":"SUM(#REF!)","v":{"$error":"#REF!"}},{"$f":"SUM(#REF!)","v":{"$error":"#REF!"}},{"$f":"SUM(#REF!)","v":{"$error":"#REF!"}},{"$f":"SUM(#REF!)","v":{"$error":"#REF!"}},{"$f":"SUM(#REF!)","v":{"$error":"#REF!"}},{"$f":"SUM(#REF!)","v":{"$error":"#REF!"}},{"$f":"SUM(#REF!)","v":{"$error":"#REF!"}},{"$f":"SUM(#REF!)","v":{"$error":"#REF!"}},{"$f":"SUM(#REF!)","v":{"$error":"#REF!"}},{"$f":"SUM(#REF!)","v":{"$error":"#REF!"}},{"$f":"SUM(#REF!)","v":{"$error":"#REF!"}},{"$f":"SUM(#REF!)","v":{"$error":"#REF!"}},{"$f":"SUM(#REF!)","v":{"$error":"#REF!"}},{"$f":"SUM(#REF!)","v":{"$error":"#REF!"}},{"$f":"SUM(#REF!)","v":{"$error":"#REF!"}},{"$f":"SUM(#REF!)","v":{"$error":"#REF!"}},{"$f":"SUM(#REF!)","v":{"$error":"#REF!"}},{"$f":"SUM(#REF!)","v":{"$error":"#REF!"}},{"$f":"SUM(#REF!)","v":{"$error":"#REF!"}},{"$f":"SUM(#REF!)","v":{"$error":"#REF!"}},{"$f":"SUM(#REF!)","v":{"$error":"#REF!"}},{"$f":"SUM(#REF!)","v":{"$error":"#REF!"}},{"$f":"SUM(#REF!)","v":{"$error":"#REF!"}},{"$f":"SUM(#REF!)","v":{"$error":"#REF!"}},{"$f":"SUM(#REF!)","v":{"$error":"#REF!"}},{"$f":"SUM(#REF!)","v":{"$error":"#REF!"}},{"$f":"SUM(#REF!)","v":{"$error":"#REF!"}},{"$f":"SUM(#REF!)","v":{"$error":"#REF!"}},{"$f":"SUM(#REF!)","v":{"$error":"#REF!"}},{"$f":"SUM(#REF!)","v":{"$error":"#REF!"}},{"$f":"SUM(#REF!)","v":{"$error":"#REF!"}},{"$f":"SUM(#REF!)","v":{"$error":"#REF!"}},{"$f":"SUM(#REF!)","v":{"$error":"#REF!"}},{"$f":"SUM(#REF!)","v":{"$error":"#REF!"}},{"$f":"SUM(#REF!)","v":{"$error":"#REF!"}},{"$f":"SUM(#REF!)","v":{"$error":"#REF!"}},{"$f":"SUM(#REF!)","v":{"$error":"#REF!"}},{"$f":"SUM(#REF!)","v":{"$error":"#REF!"}},{"$f":"SUM(#REF!)","v":{"$error":"#REF!"}},{"$f":"SUM(#REF!)","v":{"$error":"#REF!"}},{"$f":"SUM(#REF!)","v":{"$error":"#REF!"}},{"$f":"SUM(#REF!)","v":{"$error":"#REF!"}},{"$f":"SUM(#REF!)","v":{"$error":"#REF!"}},{"$f":"SUM(#REF!)","v":{"$error":"#REF!"}},{"$f":"SUM(#REF!)","v":{"$error":"#REF!"}},{"$f":"SUM(#REF!)","v":{"$error":"#REF!"}},{"$f":"SUM(#REF!)","v":{"$error":"#REF!"}},{"$f":"SUM(#REF!)","v":{"$error":"#REF!"}},{"$f":"SUM(#REF!)","v":{"$error":"#REF!"}},{"$f":"SUM(#REF!)","v":{"$error":"#REF!"}},{"$f":"SUM(#REF!)","v":{"$error":"#REF!"}},{"$f":"SUM(#REF!)","v":{"$error":"#REF!"}},{"$f":"SUM(#REF!)","v":{"$error":"#REF!"}},{"$f":"SUM(#REF!)","v":{"$error":"#REF!"}},{"$f":"SUM(#REF!)","v":{"$error":"#REF!"}},{"$f":"SUM(#REF!)","v":{"$error":"#REF!"}},{"$f":"SUM(#REF!)","v":{"$error":"#REF!"}},{"$f":"SUM(#REF!)","v":{"$error":"#REF!"}},{"$f":"SUM(#REF!)","v":{"$error":"#REF!"}},{"$f":"SUM(#REF!)","v":{"$error":"#REF!"}},{"$f":"SUM(#REF!)","v":{"$error":"#REF!"}},{"$f":"SUM(#REF!)","v":{"$error":"#REF!"}},{"$f":"SUM(#REF!)","v":{"$error":"#REF!"}},{"$f":"SUM(#REF!)","v":{"$error":"#REF!"}},{"$f":"SUM(#REF!)","v":{"$error":"#REF!"}},{"$f":"SUM(#REF!)","v":{"$error":"#REF!"}},{"$f":"SUM(#REF!)","v":{"$error":"#REF!"}},{"$f":"SUM(#REF!)","v":{"$error":"#REF!"}},{"$f":"SUM(#REF!)","v":{"$error":"#REF!"}},{"$f":"SUM(#REF!)","v":{"$error":"#REF!"}},{"$f":"SUM(#REF!)","v":{"$error":"#REF!"}},{"$f":"SUM(#REF!)","v":{"$error":"#REF!"}},{"$f":"SUM(#REF!)","v":{"$error":"#REF!"}},{"$f":"SUM(#REF!)","v":{"$error":"#REF!"}},{"$f":"SUM(#REF!)","v":{"$error":"#REF!"}},{"$f":"SUM(#REF!)","v":{"$error":"#REF!"}},{"$f":"SUM(#REF!)","v":{"$error":"#REF!"}},{"$f":"SUM(#REF!)","v":{"$error":"#REF!"}},{"$f":"SUM(#REF!)","v":{"$error":"#REF!"}},{"$f":"SUM(#REF!)","v":{"$error":"#REF!"}},{"$f":"SUM(#REF!)","v":{"$error":"#REF!"}},{"$f":"SUM(#REF!)","v":{"$error":"#REF!"}},{"$f":"SUM(#REF!)","v":{"$error":"#REF!"}},{"$f":"SUM(#REF!)","v":{"$error":"#REF!"}},{"$f":"SUM(#REF!)","v":{"$error":"#REF!"}},{"$f":"SUM(#REF!)","v":{"$error":"#REF!"}},{"$f":"SUM(#REF!)","v":{"$error":"#REF!"}},{"$f":"SUM(#REF!)","v":{"$error":"#REF!"}},{"$f":"SUM(#REF!)","v":{"$error":"#REF!"}},{"$f":"SUM(#REF!)","v":{"$error":"#REF!"}},{"$f":"SUM(#REF!)","v":{"$error":"#REF!"}},{"$f":"SUM(#REF!)","v":{"$error":"#REF!"}},{"$f":"SUM(#REF!)","v":{"$error":"#REF!"}},{"$f":"SUM(#REF!)","v":{"$error":"#REF!"}},{"$f":"SUM(#REF!)","v":{"$error":"#REF!"}},{"$f":"SUM(#REF!)","v":{"$error":"#REF!"}},{"$f":"SUM(#REF!)","v":{"$error":"#REF!"}},{"$f":"SUM(#REF!)","v":{"$error":"#REF!"}},{"$f":"SUM(#REF!)","v":{"$error":"#REF!"}},{"$f":"SUM(#REF!)","v":{"$error":"#REF!"}},{"$f":"SUM(#REF!)","v":{"$error":"#REF!"}},{"$f":"SUM(#REF!)","v":{"$error":"#REF!"}},{"$f":"SUM(#REF!)","v":{"$error":"#REF!"}},{"$f":"SUM(#REF!)","v":{"$error":"#REF!"}},{"$f":"SUM(#REF!)","v":{"$error":"#REF!"}},{"$f":"SUM(#REF!)","v":{"$error":"#REF!"}},{"$f":"SUM(#REF!)","v":{"$error":"#REF!"}},{"$f":"SUM(#REF!)","v":{"$error":"#REF!"}},{"$f":"SUM(#REF!)","v":{"$error":"#REF!"}},{"$f":"SUM(#REF!)","v":{"$error":"#REF!"}},{"$f":"SUM(#REF!)","v":{"$error":"#REF!"}},{"$f":"SUM(#REF!)","v":{"$error":"#REF!"}},{"$f":"SUM(#REF!)","v":{"$error":"#REF!"}},{"$f":"SUM(#REF!)","v":{"$error":"#REF!"}},{"$f":"SUM(#REF!)","v":{"$error":"#REF!"}},{"$f":"SUM(#REF!)","v":{"$error":"#REF!"}},{"$f":"SUM(#REF!)","v":{"$error":"#REF!"}},{"$f":"SUM(#REF!)","v":{"$error":"#REF!"}},{"$f":"SUM(#REF!)","v":{"$error":"#REF!"}},{"$f":"SUM(#REF!)","v":{"$error":"#REF!"}},{"$f":"SUM(#REF!)","v":{"$error":"#REF!"}},{"$f":"SUM(#REF!)","v":{"$error":"#REF!"}},{"$f":"SUM(#REF!)","v":{"$error":"#REF!"}},{"$f":"SUM(#REF!)","v":{"$error":"#REF!"}},{"$f":"SUM(#REF!)","v":{"$error":"#REF!"}},{"$f":"SUM(#REF!)","v":{"$error":"#REF!"}},{"$f":"SUM(#REF!)","v":{"$error":"#REF!"}},{"$f":"SUM(#REF!)","v":{"$error":"#REF!"}},{"$f":"SUM(#REF!)","v":{"$error":"#REF!"}},{"$f":"SUM(#REF!)","v":{"$error":"#REF!"}},{"$f":"SUM(#REF!)","v":{"$error":"#REF!"}},{"$f":"SUM(#REF!)","v":{"$error":"#REF!"}},{"$f":"SUM(#REF!)","v":{"$error":"#REF!"}},{"$f":"SUM(#REF!)","v":{"$error":"#REF!"}},{"$f":"SUM(#REF!)","v":{"$error":"#REF!"}},{"$f":"SUM(#REF!)","v":{"$error":"#REF!"}},{"$f":"SUM(#REF!)","v":{"$error":"#REF!"}},{"$f":"SUM(#REF!)","v":{"$error":"#REF!"}},{"$f":"SUM(#REF!)","v":{"$error":"#REF!"}},{"$f":"SUM(#REF!)","v":{"$error":"#REF!"}},{"$f":"SUM(#REF!)","v":{"$error":"#REF!"}},{"$f":"SUM(#REF!)","v":{"$error":"#REF!"}},{"$f":"SUM(#REF!)","v":{"$error":"#REF!"}},{"$f":"SUM(#REF!)","v":{"$error":"#REF!"}},{"$f":"SUM(#REF!)","v":{"$error":"#REF!"}},{"$f":"SUM(#REF!)","v":{"$error":"#REF!"}},{"$f":"SUM(#REF!)","v":{"$error":"#REF!"}},{"$f":"SUM(#REF!)","v":{"$error":"#REF!"}},{"$f":"SUM(#REF!)","v":{"$error":"#REF!"}},{"$f":"SUM(#REF!)","v":{"$error":"#REF!"}},{"$f":"SUM(#REF!)","v":{"$error":"#REF!"}},{"$f":"SUM(#REF!)","v":{"$error":"#REF!"}},{"$f":"SUM(#REF!)","v":{"$error":"#REF!"}},{"$f":"SUM(#REF!)","v":{"$error":"#REF!"}},{"$f":"SUM(#REF!)","v":{"$error":"#REF!"}},{"$f":"SUM(#REF!)","v":{"$error":"#REF!"}},{"$f":"SUM(#REF!)","v":{"$error":"#REF!"}},{"$f":"SUM(#REF!)","v":{"$error":"#REF!"}},{"$f":"SUM(#REF!)","v":{"$error":"#REF!"}},{"$f":"SUM(#REF!)","v":{"$error":"#REF!"}},{"$f":"SUM(#REF!)","v":{"$error":"#REF!"}},{"$f":"SUM(#REF!)","v":{"$error":"#REF!"}},{"$f":"SUM(#REF!)","v":{"$error":"#REF!"}},{"$f":"SUM(#REF!)","v":{"$error":"#REF!"}},{"$f":"SUM(#REF!)","v":{"$error":"#REF!"}},{"$f":"SUM(#REF!)","v":{"$error":"#REF!"}},{"$f":"SUM(#REF!)","v":{"$error":"#REF!"}},{"$f":"SUM(#REF!)","v":{"$error":"#REF!"}},{"$f":"SUM(#REF!)","v":{"$error":"#REF!"}},{"$f":"SUM(#REF!)","v":{"$error":"#REF!"}},{"$f":"SUM(#REF!)","v":{"$error":"#REF!"}},{"$f":"SUM(#REF!)","v":{"$error":"#REF!"}},{"$f":"SUM(#REF!)","v":{"$error":"#REF!"}},{"$f":"SUM(#REF!)","v":{"$error":"#REF!"}},{"$f":"SUM(#REF!)","v":{"$error":"#REF!"}},{"$f":"SUM(#REF!)","v":{"$error":"#REF!"}},{"$f":"SUM(#REF!)","v":{"$error":"#REF!"}},{"$f":"SUM(#REF!)","v":{"$error":"#REF!"}},{"$f":"SUM(#REF!)","v":{"$error":"#REF!"}},{"$f":"SUM(#REF!)","v":{"$error":"#REF!"}},{"$f":"SUM(#REF!)","v":{"$error":"#REF!"}},{"$f":"SUM(#REF!)","v":{"$error":"#REF!"}},{"$f":"SUM(#REF!)","v":{"$error":"#REF!"}},{"$f":"SUM(#REF!)","v":{"$error":"#REF!"}},{"$f":"SUM(#REF!)","v":{"$error":"#REF!"}},{"$f":"SUM(#REF!)","v":{"$error":"#REF!"}},{"$f":"SUM(#REF!)","v":{"$error":"#REF!"}},{"$f":"SUM(#REF!)","v":{"$error":"#REF!"}},{"$f":"SUM(#REF!)","v":{"$error":"#REF!"}},{"$f":"SUM(#REF!)","v":{"$error":"#REF!"}},{"$f":"SUM(#REF!)","v":{"$error":"#REF!"}},{"$f":"SUM(#REF!)","v":{"$error":"#REF!"}},{"$f":"SUM(#REF!)","v":{"$error":"#REF!"}},{"$f":"SUM(#REF!)","v":{"$error":"#REF!"}},{"$f":"SUM(#REF!)","v":{"$error":"#REF!"}},{"$f":"SUM(#REF!)","v":{"$error":"#REF!"}},{"$f":"SUM(#REF!)","v":{"$error":"#REF!"}},{"$f":"SUM(#REF!)","v":{"$error":"#REF!"}},{"$f":"SUM(#REF!)","v":{"$error":"#REF!"}},{"$f":"SUM(#REF!)","v":{"$error":"#REF!"}},{"$f":"SUM(#REF!)","v":{"$error":"#REF!"}},{"$f":"SUM(#REF!)","v":{"$error":"#REF!"}},{"$f":"SUM(#REF!)","v":{"$error":"#REF!"}},{"$f":"SUM(#REF!)","v":{"$error":"#REF!"}},{"$f":"SUM(#REF!)","v":{"$error":"#REF!"}},{"$f":"SUM(#REF!)","v":{"$error":"#REF!"}},{"$f":"SUM(#REF!)","v":{"$error":"#REF!"}},{"$f":"SUM(#REF!)","v":{"$error":"#REF!"}},{"$f":"SUM(#REF!)","v":{"$error":"#REF!"}},{"$f":"SUM(#REF!)","v":{"$error":"#REF!"}},{"$f":"SUM(#REF!)","v":{"$error":"#REF!"}},{"$f":"SUM(#REF!)","v":{"$error":"#REF!"}},{"$f":"SUM(#REF!)","v":{"$error":"#REF!"}},{"$f":"SUM(#REF!)","v":{"$error":"#REF!"}},{"$f":"SUM(#REF!)","v":{"$error":"#REF!"}},{"$f":"SUM(#REF!)","v":{"$error":"#REF!"}},{"$f":"SUM(#REF!)","v":{"$error":"#REF!"}},{"$f":"SUM(#REF!)","v":{"$error":"#REF!"}},{"$f":"SUM(#REF!)","v":{"$error":"#REF!"}},{"$f":"SUM(#REF!)","v":{"$error":"#REF!"}},{"$f":"SUM(#REF!)","v":{"$error":"#REF!"}},{"$f":"SUM(#REF!)","v":{"$error":"#REF!"}},{"$f":"SUM(#REF!)","v":{"$error":"#REF!"}},{"$f":"SUM(#REF!)","v":{"$error":"#REF!"}},{"$f":"SUM(#REF!)","v":{"$error":"#REF!"}},{"$f":"SUM(#REF!)","v":{"$error":"#REF!"}},{"$f":"SUM(#REF!)","v":{"$error":"#REF!"}},{"$f":"SUM(#REF!)","v":{"$error":"#REF!"}},{"$f":"SUM(#REF!)","v":{"$error":"#REF!"}},{"$f":"SUM(#REF!)","v":{"$error":"#REF!"}},{"$f":"SUM(#REF!)","v":{"$error":"#REF!"}},{"$f":"SUM(#REF!)","v":{"$error":"#REF!"}},{"$f":"SUM(#REF!)","v":{"$error":"#REF!"}},{"$f":"SUM(#REF!)","v":{"$error":"#REF!"}},{"$f":"SUM(#REF!)","v":{"$error":"#REF!"}},{"$f":"SUM(#REF!)","v":{"$error":"#REF!"}},{"$f":"SUM(#REF!)","v":{"$error":"#REF!"}},{"$f":"SUM(#REF!)","v":{"$error":"#REF!"}},{"$f":"SUM(#REF!)","v":{"$error":"#REF!"}},{"$f":"SUM(#REF!)","v":{"$error":"#REF!"}},{"$f":"SUM(#REF!)","v":{"$error":"#REF!"}},{"$f":"SUM(#REF!)","v":{"$error":"#REF!"}},{"$f":"SUM(#REF!)","v":{"$error":"#REF!"}},{"$f":"SUM(#REF!)","v":{"$error":"#REF!"}},{"$f":"SUM(#REF!)","v":{"$error":"#REF!"}},{"$f":"SUM(#REF!)","v":{"$error":"#REF!"}},{"$f":"SUM(#REF!)","v":{"$error":"#REF!"}},{"$f":"SUM(#REF!)","v":{"$error":"#REF!"}},{"$f":"SUM(#REF!)","v":{"$error":"#REF!"}},{"$f":"SUM(#REF!)","v":{"$error":"#REF!"}},{"$f":"SUM(#REF!)","v":{"$error":"#REF!"}},{"$f":"SUM(#REF!)","v":{"$error":"#REF!"}},{"$f":"SUM(#REF!)","v":{"$error":"#REF!"}},{"$f":"SUM(#REF!)","v":{"$error":"#REF!"}},{"$f":"SUM(#REF!)","v":{"$error":"#REF!"}},{"$f":"SUM(#REF!)","v":{"$error":"#REF!"}},{"$f":"SUM(#REF!)","v":{"$error":"#REF!"}},{"$f":"SUM(#REF!)","v":{"$error":"#REF!"}},{"$f":"SUM(#REF!)","v":{"$error":"#REF!"}},{"$f":"SUM(#REF!)","v":{"$error":"#REF!"}},{"$f":"SUM(#REF!)","v":{"$error":"#REF!"}},{"$f":"SUM(#REF!)","v":{"$error":"#REF!"}},{"$f":"SUM(#REF!)","v":{"$error":"#REF!"}},{"$f":"SUM(#REF!)","v":{"$error":"#REF!"}},{"$f":"SUM(#REF!)","v":{"$error":"#REF!"}},{"$f":"SUM(#REF!)","v":{"$error":"#REF!"}},{"$f":"SUM(#REF!)","v":{"$error":"#REF!"}},{"$f":"SUM(#REF!)","v":{"$error":"#REF!"}},{"$f":"SUM(#REF!)","v":{"$error":"#REF!"}},{"$f":"SUM(#REF!)","v":{"$error":"#REF!"}},{"$f":"SUM(#REF!)","v":{"$error":"#REF!"}},{"$f":"SUM(#REF!)","v":{"$error":"#REF!"}},{"$f":"SUM(#REF!)","v":{"$error":"#REF!"}},{"$f":"SUM(#REF!)","v":{"$error":"#REF!"}},{"$f":"SUM(#REF!)","v":{"$error":"#REF!"}},{"$f":"SUM(#REF!)","v":{"$error":"#REF!"}},{"$f":"SUM(#REF!)","v":{"$error":"#REF!"}},{"$f":"SUM(#REF!)","v":{"$error":"#REF!"}},{"$f":"SUM(#REF!)","v":{"$error":"#REF!"}},{"$f":"SUM(#REF!)","v":{"$error":"#REF!"}},{"$f":"SUM(#REF!)","v":{"$error":"#REF!"}},{"$f":"SUM(#REF!)","v":{"$error":"#REF!"}},{"$f":"SUM(#REF!)","v":{"$error":"#REF!"}},{"$f":"SUM(#REF!)","v":{"$error":"#REF!"}},{"$f":"SUM(#REF!)","v":{"$error":"#REF!"}},{"$f":"SUM(#REF!)","v":{"$error":"#REF!"}},{"$f":"SUM(#REF!)","v":{"$error":"#REF!"}},{"$f":"SUM(#REF!)","v":{"$error":"#REF!"}},{"$f":"SUM(#REF!)","v":{"$error":"#REF!"}},{"$f":"SUM(#REF!)","v":{"$error":"#REF!"}},{"$f":"SUM(#REF!)","v":{"$error":"#REF!"}},{"$f":"SUM(#REF!)","v":{"$error":"#REF!"}},{"$f":"SUM(#REF!)","v":{"$error":"#REF!"}},{"$f":"SUM(#REF!)","v":{"$error":"#REF!"}},{"$f":"SUM(#REF!)","v":{"$error":"#REF!"}},{"$f":"SUM(#REF!)","v":{"$error":"#REF!"}},{"$f":"SUM(#REF!)","v":{"$error":"#REF!"}},{"$f":"SUM(#REF!)","v":{"$error":"#REF!"}},{"$f":"SUM(#REF!)","v":{"$error":"#REF!"}},{"$f":"SUM(#REF!)","v":{"$error":"#REF!"}},{"$f":"SUM(#REF!)","v":{"$error":"#REF!"}},{"$f":"SUM(#REF!)","v":{"$error":"#REF!"}},{"$f":"SUM(#REF!)","v":{"$error":"#REF!"}},{"$f":"SUM(#REF!)","v":{"$error":"#REF!"}},{"$f":"SUM(#REF!)","v":{"$error":"#REF!"}},{"$f":"SUM(#REF!)","v":{"$error":"#REF!"}},{"$f":"SUM(#REF!)","v":{"$error":"#REF!"}},{"$f":"SUM(#REF!)","v":{"$error":"#REF!"}},{"$f":"SUM(#REF!)","v":{"$error":"#REF!"}},{"$f":"SUM(#REF!)","v":{"$error":"#REF!"}},{"$f":"SUM(#REF!)","v":{"$error":"#REF!"}},{"$f":"SUM(#REF!)","v":{"$error":"#REF!"}},{"$f":"SUM(#REF!)","v":{"$error":"#REF!"}},{"$f":"SUM(#REF!)","v":{"$error":"#REF!"}},{"$f":"SUM(#REF!)","v":{"$error":"#REF!"}},{"$f":"SUM(#REF!)","v":{"$error":"#REF!"}},{"$f":"SUM(#REF!)","v":{"$error":"#REF!"}},{"$f":"SUM(#REF!)","v":{"$error":"#REF!"}},{"$f":"SUM(#REF!)","v":{"$error":"#REF!"}},{"$f":"SUM(#REF!)","v":{"$error":"#REF!"}},{"$f":"SUM(#REF!)","v":{"$error":"#REF!"}},{"$f":"SUM(#REF!)","v":{"$error":"#REF!"}},{"$f":"SUM(#REF!)","v":{"$error":"#REF!"}},{"$f":"SUM(#REF!)","v":{"$error":"#REF!"}},{"$f":"SUM(#REF!)","v":{"$error":"#REF!"}},{"$f":"SUM(#REF!)","v":{"$error":"#REF!"}},{"$f":"SUM(#REF!)","v":{"$error":"#REF!"}},{"$f":"SUM(#REF!)","v":{"$error":"#REF!"}},{"$f":"SUM(#REF!)","v":{"$error":"#REF!"}},{"$f":"SUM(#REF!)","v":{"$error":"#REF!"}},{"$f":"SUM(#REF!)","v":{"$error":"#REF!"}},{"$f":"SUM(#REF!)","v":{"$error":"#REF!"}},{"$f":"SUM(#REF!)","v":{"$error":"#REF!"}},{"$f":"SUM(#REF!)","v":{"$error":"#REF!"}},{"$f":"SUM(#REF!)","v":{"$error":"#REF!"}},{"$f":"SUM(#REF!)","v":{"$error":"#REF!"}},{"$f":"SUM(#REF!)","v":{"$error":"#REF!"}},{"$f":"SUM(#REF!)","v":{"$error":"#REF!"}},{"$f":"SUM(#REF!)","v":{"$error":"#REF!"}},{"$f":"SUM(#REF!)","v":{"$error":"#REF!"}},{"$f":"SUM(#REF!)","v":{"$error":"#REF!"}},{"$f":"SUM(#REF!)","v":{"$error":"#REF!"}},{"$f":"SUM(#REF!)","v":{"$error":"#REF!"}},{"$f":"SUM(#REF!)","v":{"$error":"#REF!"}},{"$f":"SUM(#REF!)","v":{"$error":"#REF!"}},{"$f":"SUM(#REF!)","v":{"$error":"#REF!"}},{"$f":"SUM(#REF!)","v":{"$error":"#REF!"}},{"$f":"SUM(#REF!)","v":{"$error":"#REF!"}},{"$f":"SUM(#REF!)","v":{"$error":"#REF!"}},{"$f":"SUM(#REF!)","v":{"$error":"#REF!"}},{"$f":"SUM(#REF!)","v":{"$error":"#REF!"}},{"$f":"SUM(#REF!)","v":{"$error":"#REF!"}},{"$f":"SUM(#REF!)","v":{"$error":"#REF!"}},{"$f":"SUM(#REF!)","v":{"$error":"#REF!"}},{"$f":"SUM(#REF!)","v":{"$error":"#REF!"}},{"$f":"SUM(#REF!)","v":{"$error":"#REF!"}},{"$f":"SUM(#REF!)","v":{"$error":"#REF!"}},{"$f":"SUM(#REF!)","v":{"$error":"#REF!"}},{"$f":"SUM(#REF!)","v":{"$error":"#REF!"}},{"$f":"SUM(#REF!)","v":{"$error":"#REF!"}},{"$f":"SUM(#REF!)","v":{"$error":"#REF!"}},{"$f":"SUM(#REF!)","v":{"$error":"#REF!"}},{"$f":"SUM(#REF!)","v":{"$error":"#REF!"}},{"$f":"SUM(#REF!)","v":{"$error":"#REF!"}},{"$f":"SUM(#REF!)","v":{"$error":"#REF!"}},{"$f":"SUM(#REF!)","v":{"$error":"#REF!"}},{"$f":"SUM(#REF!)","v":{"$error":"#REF!"}},{"$f":"SUM(#REF!)","v":{"$error":"#REF!"}},{"$f":"SUM(#REF!)","v":{"$error":"#REF!"}},{"$f":"SUM(#REF!)","v":{"$error":"#REF!"}},{"$f":"SUM(#REF!)","v":{"$error":"#REF!"}},{"$f":"SUM(#REF!)","v":{"$error":"#REF!"}},{"$f":"SUM(#REF!)","v":{"$error":"#REF!"}},{"$f":"SUM(#REF!)","v":{"$error":"#REF!"}},{"$f":"SUM(#REF!)","v":{"$error":"#REF!"}},{"$f":"SUM(#REF!)","v":{"$error":"#REF!"}},{"$f":"SUM(#REF!)","v":{"$error":"#REF!"}},{"$f":"SUM(#REF!)","v":{"$error":"#REF!"}},{"$f":"SUM(#REF!)","v":{"$error":"#REF!"}},{"$f":"SUM(#REF!)","v":{"$error":"#REF!"}},{"$f":"SUM(#REF!)","v":{"$error":"#REF!"}},{"$f":"SUM(#REF!)","v":{"$error":"#REF!"}},{"$f":"SUM(#REF!)","v":{"$error":"#REF!"}},{"$f":"SUM(#REF!)","v":{"$error":"#REF!"}},{"$f":"SUM(#REF!)","v":{"$error":"#REF!"}},{"$f":"SUM(#REF!)","v":{"$error":"#REF!"}},{"$f":"SUM(#REF!)","v":{"$error":"#REF!"}},{"$f":"SUM(#REF!)","v":{"$error":"#REF!"}},{"$f":"SUM(#REF!)","v":{"$error":"#REF!"}},{"$f":"SUM(#REF!)","v":{"$error":"#REF!"}},{"$f":"SUM(#REF!)","v":{"$error":"#REF!"}},{"$f":"SUM(#REF!)","v":{"$error":"#REF!"}},{"$f":"SUM(#REF!)","v":{"$error":"#REF!"}},{"$f":"SUM(#REF!)","v":{"$error":"#REF!"}},{"$f":"SUM(#REF!)","v":{"$error":"#REF!"}},{"$f":"SUM(#REF!)","v":{"$error":"#REF!"}},{"$f":"SUM(#REF!)","v":{"$error":"#REF!"}},{"$f":"SUM(#REF!)","v":{"$error":"#REF!"}},{"$f":"SUM(#REF!)","v":{"$error":"#REF!"}},{"$f":"SUM(#REF!)","v":{"$error":"#REF!"}},{"$f":"SUM(#REF!)","v":{"$error":"#REF!"}},{"$f":"SUM(#REF!)","v":{"$error":"#REF!"}},{"$f":"SUM(#REF!)","v":{"$error":"#REF!"}},{"$f":"SUM(#REF!)","v":{"$error":"#REF!"}},{"$f":"SUM(#REF!)","v":{"$error":"#REF!"}},{"$f":"SUM(#REF!)","v":{"$error":"#REF!"}},{"$f":"SUM(#REF!)","v":{"$error":"#REF!"}},{"$f":"SUM(#REF!)","v":{"$error":"#REF!"}},{"$f":"SUM(#REF!)","v":{"$error":"#REF!"}},{"$f":"SUM(#REF!)","v":{"$error":"#REF!"}},{"$f":"SUM(#REF!)","v":{"$error":"#REF!"}},{"$f":"SUM(#REF!)","v":{"$error":"#REF!"}},{"$f":"SUM(#REF!)","v":{"$error":"#REF!"}},{"$f":"SUM(#REF!)","v":{"$error":"#REF!"}},{"$f":"SUM(#REF!)","v":{"$error":"#REF!"}},{"$f":"SUM(#REF!)","v":{"$error":"#REF!"}},{"$f":"SUM(#REF!)","v":{"$error":"#REF!"}},{"$f":"SUM(#REF!)","v":{"$error":"#REF!"}},{"$f":"SUM(#REF!)","v":{"$error":"#REF!"}},{"$f":"SUM(#REF!)","v":{"$error":"#REF!"}},{"$f":"SUM(#REF!)","v":{"$error":"#REF!"}},{"$f":"SUM(#REF!)","v":{"$error":"#REF!"}},{"$f":"SUM(#REF!)","v":{"$error":"#REF!"}},{"$f":"SUM(#REF!)","v":{"$error":"#REF!"}},{"$f":"SUM(#REF!)","v":{"$error":"#REF!"}},{"$f":"SUM(#REF!)","v":{"$error":"#REF!"}},{"$f":"SUM(#REF!)","v":{"$error":"#REF!"}},{"$f":"SUM(#REF!)","v":{"$error":"#REF!"}},{"$f":"SUM(#REF!)","v":{"$error":"#REF!"}},{"$f":"SUM(#REF!)","v":{"$error":"#REF!"}},{"$f":"SUM(#REF!)","v":{"$error":"#REF!"}},{"$f":"SUM(#REF!)","v":{"$error":"#REF!"}},{"$f":"SUM(#REF!)","v":{"$error":"#REF!"}},{"$f":"SUM(#REF!)","v":{"$error":"#REF!"}},{"$f":"SUM(#REF!)","v":{"$error":"#REF!"}},{"$f":"SUM(#REF!)","v":{"$error":"#REF!"}},{"$f":"SUM(#REF!)","v":{"$error":"#REF!"}},{"$f":"SUM(#REF!)","v":{"$error":"#REF!"}},{"$f":"SUM(#REF!)","v":{"$error":"#REF!"}},{"$f":"SUM(#REF!)","v":{"$error":"#REF!"}},{"$f":"SUM(#REF!)","v":{"$error":"#REF!"}},{"$f":"SUM(#REF!)","v":{"$error":"#REF!"}},{"$f":"SUM(#REF!)","v":{"$error":"#REF!"}},{"$f":"SUM(#REF!)","v":{"$error":"#REF!"}},{"$f":"SUM(#REF!)","v":{"$error":"#REF!"}},{"$f":"SUM(#REF!)","v":{"$error":"#REF!"}},{"$f":"SUM(#REF!)","v":{"$error":"#REF!"}},{"$f":"SUM(#REF!)","v":{"$error":"#REF!"}},{"$f":"SUM(#REF!)","v":{"$error":"#REF!"}},{"$f":"SUM(#REF!)","v":{"$error":"#REF!"}},{"$f":"SUM(#REF!)","v":{"$error":"#REF!"}},{"$f":"SUM(#REF!)","v":{"$error":"#REF!"}},{"$f":"SUM(#REF!)","v":{"$error":"#REF!"}},{"$f":"SUM(#REF!)","v":{"$error":"#REF!"}},{"$f":"SUM(#REF!)","v":{"$error":"#REF!"}},{"$f":"SUM(#REF!)","v":{"$error":"#REF!"}},{"$f":"SUM(#REF!)","v":{"$error":"#REF!"}},{"$f":"SUM(#REF!)","v":{"$error":"#REF!"}},{"$f":"SUM(#REF!)","v":{"$error":"#REF!"}},{"$f":"SUM(#REF!)","v":{"$error":"#REF!"}},{"$f":"SUM(#REF!)","v":{"$error":"#REF!"}},{"$f":"SUM(#REF!)","v":{"$error":"#REF!"}},{"$f":"SUM(#REF!)","v":{"$error":"#REF!"}},{"$f":"SUM(#REF!)","v":{"$error":"#REF!"}},{"$f":"SUM(#REF!)","v":{"$error":"#REF!"}},{"$f":"SUM(#REF!)","v":{"$error":"#REF!"}},{"$f":"SUM(#REF!)","v":{"$error":"#REF!"}},{"$f":"SUM(#REF!)","v":{"$error":"#REF!"}},{"$f":"SUM(#REF!)","v":{"$error":"#REF!"}},{"$f":"SUM(#REF!)","v":{"$error":"#REF!"}},{"$f":"SUM(#REF!)","v":{"$error":"#REF!"}},{"$f":"SUM(#REF!)","v":{"$error":"#REF!"}},{"$f":"SUM(#REF!)","v":{"$error":"#REF!"}},{"$f":"SUM(#REF!)","v":{"$error":"#REF!"}},{"$f":"SUM(#REF!)","v":{"$error":"#REF!"}},{"$f":"SUM(#REF!)","v":{"$error":"#REF!"}},{"$f":"SUM(#REF!)","v":{"$error":"#REF!"}},{"$f":"SUM(#REF!)","v":{"$error":"#REF!"}},{"$f":"SUM(#REF!)","v":{"$error":"#REF!"}},{"$f":"SUM(#REF!)","v":{"$error":"#REF!"}},{"$f":"SUM(#REF!)","v":{"$error":"#REF!"}},{"$f":"SUM(#REF!)","v":{"$error":"#REF!"}},{"$f":"SUM(#REF!)","v":{"$error":"#REF!"}},{"$f":"SUM(#REF!)","v":{"$error":"#REF!"}},{"$f":"SUM(#REF!)","v":{"$error":"#REF!"}},{"$f":"SUM(#REF!)","v":{"$error":"#REF!"}},{"$f":"SUM(#REF!)","v":{"$error":"#REF!"}},{"$f":"SUM(#REF!)","v":{"$error":"#REF!"}},{"$f":"SUM(#REF!)","v":{"$error":"#REF!"}},{"$f":"SUM(#REF!)","v":{"$error":"#REF!"}},{"$f":"SUM(#REF!)","v":{"$error":"#REF!"}},{"$f":"SUM(#REF!)","v":{"$error":"#REF!"}},{"$f":"SUM(#REF!)","v":{"$error":"#REF!"}},{"$f":"SUM(#REF!)","v":{"$error":"#REF!"}},{"$f":"SUM(#REF!)","v":{"$error":"#REF!"}},{"$f":"SUM(#REF!)","v":{"$error":"#REF!"}},{"$f":"SUM(#REF!)","v":{"$error":"#REF!"}},{"$f":"SUM(#REF!)","v":{"$error":"#REF!"}},{"$f":"SUM(#REF!)","v":{"$error":"#REF!"}},{"$f":"SUM(#REF!)","v":{"$error":"#REF!"}},{"$f":"SUM(#REF!)","v":{"$error":"#REF!"}},{"$f":"SUM(#REF!)","v":{"$error":"#REF!"}},{"$f":"SUM(#REF!)","v":{"$error":"#REF!"}},{"$f":"SUM(#REF!)","v":{"$error":"#REF!"}},{"$f":"SUM(#REF!)","v":{"$error":"#REF!"}},{"$f":"SUM(#REF!)","v":{"$error":"#REF!"}},{"$f":"SUM(#REF!)","v":{"$error":"#REF!"}},{"$f":"SUM(#REF!)","v":{"$error":"#REF!"}},{"$f":"SUM(#REF!)","v":{"$error":"#REF!"}},{"$f":"SUM(#REF!)","v":{"$error":"#REF!"}},{"$f":"SUM(#REF!)","v":{"$error":"#REF!"}},{"$f":"SUM(#REF!)","v":{"$error":"#REF!"}},{"$f":"SUM(#REF!)","v":{"$error":"#REF!"}},{"$f":"SUM(#REF!)","v":{"$error":"#REF!"}},{"$f":"SUM(#REF!)","v":{"$error":"#REF!"}},{"$f":"SUM(#REF!)","v":{"$error":"#REF!"}},{"$f":"SUM(#REF!)","v":{"$error":"#REF!"}},{"$f":"SUM(#REF!)","v":{"$error":"#REF!"}},{"$f":"SUM(#REF!)","v":{"$error":"#REF!"}},{"$f":"SUM(#REF!)","v":{"$error":"#REF!"}},{"$f":"SUM(#REF!)","v":{"$error":"#REF!"}},{"$f":"SUM(#REF!)","v":{"$error":"#REF!"}},{"$f":"SUM(#REF!)","v":{"$error":"#REF!"}},{"$f":"SUM(#REF!)","v":{"$error":"#REF!"}},{"$f":"SUM(#REF!)","v":{"$error":"#REF!"}},{"$f":"SUM(#REF!)","v":{"$error":"#REF!"}},{"$f":"SUM(#REF!)","v":{"$error":"#REF!"}},{"$f":"SUM(#REF!)","v":{"$error":"#REF!"}},{"$f":"SUM(#REF!)","v":{"$error":"#REF!"}},{"$f":"SUM(#REF!)","v":{"$error":"#REF!"}},{"$f":"SUM(#REF!)","v":{"$error":"#REF!"}},{"$f":"SUM(#REF!)","v":{"$error":"#REF!"}},{"$f":"SUM(#REF!)","v":{"$error":"#REF!"}},{"$f":"SUM(#REF!)","v":{"$error":"#REF!"}},{"$f":"SUM(#REF!)","v":{"$error":"#REF!"}},{"$f":"SUM(#REF!)","v":{"$error":"#REF!"}},{"$f":"SUM(#REF!)","v":{"$error":"#REF!"}},{"$f":"SUM(#REF!)","v":{"$error":"#REF!"}},{"$f":"SUM(#REF!)","v":{"$error":"#REF!"}},{"$f":"SUM(#REF!)","v":{"$error":"#REF!"}},{"$f":"SUM(#REF!)","v":{"$error":"#REF!"}},{"$f":"SUM(#REF!)","v":{"$error":"#REF!"}},{"$f":"SUM(#REF!)","v":{"$error":"#REF!"}},{"$f":"SUM(#REF!)","v":{"$error":"#REF!"}},{"$f":"SUM(#REF!)","v":{"$error":"#REF!"}},{"$f":"SUM(#REF!)","v":{"$error":"#REF!"}},{"$f":"SUM(#REF!)","v":{"$error":"#REF!"}},{"$f":"SUM(#REF!)","v":{"$error":"#REF!"}},{"$f":"SUM(#REF!)","v":{"$error":"#REF!"}},{"$f":"SUM(#REF!)","v":{"$error":"#REF!"}},{"$f":"SUM(#REF!)","v":{"$error":"#REF!"}},{"$f":"SUM(#REF!)","v":{"$error":"#REF!"}},{"$f":"SUM(#REF!)","v":{"$error":"#REF!"}},{"$f":"SUM(#REF!)","v":{"$error":"#REF!"}},{"$f":"SUM(#REF!)","v":{"$error":"#REF!"}},{"$f":"SUM(#REF!)","v":{"$error":"#REF!"}},{"$f":"SUM(#REF!)","v":{"$error":"#REF!"}},{"$f":"SUM(#REF!)","v":{"$error":"#REF!"}},{"$f":"SUM(#REF!)","v":{"$error":"#REF!"}},{"$f":"SUM(#REF!)","v":{"$error":"#REF!"}},{"$f":"SUM(#REF!)","v":{"$error":"#REF!"}},{"$f":"SUM(#REF!)","v":{"$error":"#REF!"}},{"$f":"SUM(#REF!)","v":{"$error":"#REF!"}},{"$f":"SUM(#REF!)","v":{"$error":"#REF!"}},{"$f":"SUM(#REF!)","v":{"$error":"#REF!"}},{"$f":"SUM(#REF!)","v":{"$error":"#REF!"}},{"$f":"SUM(#REF!)","v":{"$error":"#REF!"}},{"$f":"SUM(#REF!)","v":{"$error":"#REF!"}},{"$f":"SUM(#REF!)","v":{"$error":"#REF!"}},{"$f":"SUM(#REF!)","v":{"$error":"#REF!"}},{"$f":"SUM(#REF!)","v":{"$error":"#REF!"}},{"$f":"SUM(#REF!)","v":{"$error":"#REF!"}},{"$f":"SUM(#REF!)","v":{"$error":"#REF!"}},{"$f":"SUM(#REF!)","v":{"$error":"#REF!"}},{"$f":"SUM(#REF!)","v":{"$error":"#REF!"}},{"$f":"SUM(#REF!)","v":{"$error":"#REF!"}},{"$f":"SUM(#REF!)","v":{"$error":"#REF!"}},{"$f":"SUM(#REF!)","v":{"$error":"#REF!"}},{"$f":"SUM(#REF!)","v":{"$error":"#REF!"}},{"$f":"SUM(#REF!)","v":{"$error":"#REF!"}},{"$f":"SUM(#REF!)","v":{"$error":"#REF!"}},{"$f":"SUM(#REF!)","v":{"$error":"#REF!"}},{"$f":"SUM(#REF!)","v":{"$error":"#REF!"}},{"$f":"SUM(#REF!)","v":{"$error":"#REF!"}},{"$f":"SUM(#REF!)","v":{"$error":"#REF!"}},{"$f":"SUM(#REF!)","v":{"$error":"#REF!"}},{"$f":"SUM(#REF!)","v":{"$error":"#REF!"}},{"$f":"SUM(#REF!)","v":{"$error":"#REF!"}},{"$f":"SUM(#REF!)","v":{"$error":"#REF!"}},{"$f":"SUM(#REF!)","v":{"$error":"#REF!"}},{"$f":"SUM(#REF!)","v":{"$error":"#REF!"}},{"$f":"SUM(#REF!)","v":{"$error":"#REF!"}},{"$f":"SUM(#REF!)","v":{"$error":"#REF!"}},{"$f":"SUM(#REF!)","v":{"$error":"#REF!"}},{"$f":"SUM(#REF!)","v":{"$error":"#REF!"}},{"$f":"SUM(#REF!)","v":{"$error":"#REF!"}},{"$f":"SUM(#REF!)","v":{"$error":"#REF!"}},{"$f":"SUM(#REF!)","v":{"$error":"#REF!"}},{"$f":"SUM(#REF!)","v":{"$error":"#REF!"}},{"$f":"SUM(#REF!)","v":{"$error":"#REF!"}},{"$f":"SUM(#REF!)","v":{"$error":"#REF!"}},{"$f":"SUM(#REF!)","v":{"$error":"#REF!"}},{"$f":"SUM(#REF!)","v":{"$error":"#REF!"}},{"$f":"SUM(#REF!)","v":{"$error":"#REF!"}},{"$f":"SUM(#REF!)","v":{"$error":"#REF!"}},{"$f":"SUM(#REF!)","v":{"$error":"#REF!"}},{"$f":"SUM(#REF!)","v":{"$error":"#REF!"}},{"$f":"SUM(#REF!)","v":{"$error":"#REF!"}},{"$f":"SUM(#REF!)","v":{"$error":"#REF!"}},{"$f":"SUM(#REF!)","v":{"$error":"#REF!"}},{"$f":"SUM(#REF!)","v":{"$error":"#REF!"}},{"$f":"SUM(#REF!)","v":{"$error":"#REF!"}},{"$f":"SUM(#REF!)","v":{"$error":"#REF!"}},{"$f":"SUM(#REF!)","v":{"$error":"#REF!"}},{"$f":"SUM(#REF!)","v":{"$error":"#REF!"}},{"$f":"SUM(#REF!)","v":{"$error":"#REF!"}},{"$f":"SUM(#REF!)","v":{"$error":"#REF!"}},{"$f":"SUM(#REF!)","v":{"$error":"#REF!"}},{"$f":"SUM(#REF!)","v":{"$error":"#REF!"}},{"$f":"SUM(#REF!)","v":{"$error":"#REF!"}},{"$f":"SUM(#REF!)","v":{"$error":"#REF!"}},{"$f":"SUM(#REF!)","v":{"$error":"#REF!"}},{"$f":"SUM(#REF!)","v":{"$error":"#REF!"}},{"$f":"SUM(#REF!)","v":{"$error":"#REF!"}},{"$f":"SUM(#REF!)","v":{"$error":"#REF!"}},{"$f":"SUM(#REF!)","v":{"$error":"#REF!"}},{"$f":"SUM(#REF!)","v":{"$error":"#REF!"}},{"$f":"SUM(#REF!)","v":{"$error":"#REF!"}},{"$f":"SUM(#REF!)","v":{"$error":"#REF!"}},{"$f":"SUM(#REF!)","v":{"$error":"#REF!"}},{"$f":"SUM(#REF!)","v":{"$error":"#REF!"}},{"$f":"SUM(#REF!)","v":{"$error":"#REF!"}},{"$f":"SUM(#REF!)","v":{"$error":"#REF!"}},{"$f":"SUM(#REF!)","v":{"$error":"#REF!"}},{"$f":"SUM(#REF!)","v":{"$error":"#REF!"}},{"$f":"SUM(#REF!)","v":{"$error":"#REF!"}},{"$f":"SUM(#REF!)","v":{"$error":"#REF!"}},{"$f":"SUM(#REF!)","v":{"$error":"#REF!"}},{"$f":"SUM(#REF!)","v":{"$error":"#REF!"}},{"$f":"SUM(#REF!)","v":{"$error":"#REF!"}},{"$f":"SUM(#REF!)","v":{"$error":"#REF!"}},{"$f":"SUM(#REF!)","v":{"$error":"#REF!"}},{"$f":"SUM(#REF!)","v":{"$error":"#REF!"}},{"$f":"SUM(#REF!)","v":{"$error":"#REF!"}},{"$f":"SUM(#REF!)","v":{"$error":"#REF!"}},{"$f":"SUM(#REF!)","v":{"$error":"#REF!"}},{"$f":"SUM(#REF!)","v":{"$error":"#REF!"}},{"$f":"SUM(#REF!)","v":{"$error":"#REF!"}},{"$f":"SUM(#REF!)","v":{"$error":"#REF!"}},{"$f":"SUM(#REF!)","v":{"$error":"#REF!"}},{"$f":"SUM(#REF!)","v":{"$error":"#REF!"}},{"$f":"SUM(#REF!)","v":{"$error":"#REF!"}},{"$f":"SUM(#REF!)","v":{"$error":"#REF!"}},{"$f":"SUM(#REF!)","v":{"$error":"#REF!"}},{"$f":"SUM(#REF!)","v":{"$error":"#REF!"}},{"$f":"SUM(#REF!)","v":{"$error":"#REF!"}},{"$f":"SUM(#REF!)","v":{"$error":"#REF!"}},{"$f":"SUM(#REF!)","v":{"$error":"#REF!"}},{"$f":"SUM(#REF!)","v":{"$error":"#REF!"}},{"$f":"SUM(#REF!)","v":{"$error":"#REF!"}},{"$f":"SUM(#REF!)","v":{"$error":"#REF!"}},{"$f":"SUM(#REF!)","v":{"$error":"#REF!"}},{"$f":"SUM(#REF!)","v":{"$error":"#REF!"}},{"$f":"SUM(#REF!)","v":{"$error":"#REF!"}},{"$f":"SUM(#REF!)","v":{"$error":"#REF!"}},{"$f":"SUM(#REF!)","v":{"$error":"#REF!"}},{"$f":"SUM(#REF!)","v":{"$error":"#REF!"}},{"$f":"SUM(#REF!)","v":{"$error":"#REF!"}},{"$f":"SUM(#REF!)","v":{"$error":"#REF!"}},{"$f":"SUM(#REF!)","v":{"$error":"#REF!"}},{"$f":"SUM(#REF!)","v":{"$error":"#REF!"}},{"$f":"SUM(#REF!)","v":{"$error":"#REF!"}},{"$f":"SUM(#REF!)","v":{"$error":"#REF!"}},{"$f":"SUM(#REF!)","v":{"$error":"#REF!"}},{"$f":"SUM(#REF!)","v":{"$error":"#REF!"}},{"$f":"SUM(#REF!)","v":{"$error":"#REF!"}},{"$f":"SUM(#REF!)","v":{"$error":"#REF!"}},{"$f":"SUM(#REF!)","v":{"$error":"#REF!"}},{"$f":"SUM(#REF!)","v":{"$error":"#REF!"}},{"$f":"SUM(#REF!)","v":{"$error":"#REF!"}},{"$f":"SUM(#REF!)","v":{"$error":"#REF!"}},{"$f":"SUM(#REF!)","v":{"$error":"#REF!"}},{"$f":"SUM(#REF!)","v":{"$error":"#REF!"}},{"$f":"SUM(#REF!)","v":{"$error":"#REF!"}},{"$f":"SUM(#REF!)","v":{"$error":"#REF!"}},{"$f":"SUM(#REF!)","v":{"$error":"#REF!"}},{"$f":"SUM(#REF!)","v":{"$error":"#REF!"}},{"$f":"SUM(#REF!)","v":{"$error":"#REF!"}},{"$f":"SUM(#REF!)","v":{"$error":"#REF!"}},{"$f":"SUM(#REF!)","v":{"$error":"#REF!"}},{"$f":"SUM(#REF!)","v":{"$error":"#REF!"}},{"$f":"SUM(#REF!)","v":{"$error":"#REF!"}},{"$f":"SUM(#REF!)","v":{"$error":"#REF!"}},{"$f":"SUM(#REF!)","v":{"$error":"#REF!"}},{"$f":"SUM(#REF!)","v":{"$error":"#REF!"}},{"$f":"SUM(#REF!)","v":{"$error":"#REF!"}},{"$f":"SUM(#REF!)","v":{"$error":"#REF!"}},{"$f":"SUM(#REF!)","v":{"$error":"#REF!"}},{"$f":"SUM(#REF!)","v":{"$error":"#REF!"}},{"$f":"SUM(#REF!)","v":{"$error":"#REF!"}},{"$f":"SUM(#REF!)","v":{"$error":"#REF!"}},{"$f":"SUM(#REF!)","v":{"$error":"#REF!"}},{"$f":"SUM(#REF!)","v":{"$error":"#REF!"}},{"$f":"SUM(#REF!)","v":{"$error":"#REF!"}},{"$f":"SUM(#REF!)","v":{"$error":"#REF!"}},{"$f":"SUM(#REF!)","v":{"$error":"#REF!"}},{"$f":"SUM(#REF!)","v":{"$error":"#REF!"}},{"$f":"SUM(#REF!)","v":{"$error":"#REF!"}},{"$f":"SUM(#REF!)","v":{"$error":"#REF!"}},{"$f":"SUM(#REF!)","v":{"$error":"#REF!"}},{"$f":"SUM(#REF!)","v":{"$error":"#REF!"}},{"$f":"SUM(#REF!)","v":{"$error":"#REF!"}},{"$f":"SUM(#REF!)","v":{"$error":"#REF!"}},{"$f":"SUM(#REF!)","v":{"$error":"#REF!"}},{"$f":"SUM(#REF!)","v":{"$error":"#REF!"}},{"$f":"SUM(#REF!)","v":{"$error":"#REF!"}},{"$f":"SUM(#REF!)","v":{"$error":"#REF!"}},{"$f":"SUM(#REF!)","v":{"$error":"#REF!"}},{"$f":"SUM(#REF!)","v":{"$error":"#REF!"}},{"$f":"SUM(#REF!)","v":{"$error":"#REF!"}},{"$f":"SUM(#REF!)","v":{"$error":"#REF!"}},{"$f":"SUM(#REF!)","v":{"$error":"#REF!"}},{"$f":"SUM(#REF!)","v":{"$error":"#REF!"}},{"$f":"SUM(#REF!)","v":{"$error":"#REF!"}},{"$f":"SUM(#REF!)","v":{"$error":"#REF!"}},{"$f":"SUM(#REF!)","v":{"$error":"#REF!"}},{"$f":"SUM(#REF!)","v":{"$error":"#REF!"}},{"$f":"SUM(#REF!)","v":{"$error":"#REF!"}},{"$f":"SUM(#REF!)","v":{"$error":"#REF!"}},{"$f":"SUM(#REF!)","v":{"$error":"#REF!"}},{"$f":"SUM(#REF!)","v":{"$error":"#REF!"}},{"$f":"SUM(#REF!)","v":{"$error":"#REF!"}},{"$f":"SUM(#REF!)","v":{"$error":"#REF!"}},{"$f":"SUM(#REF!)","v":{"$error":"#REF!"}},{"$f":"SUM(#REF!)","v":{"$error":"#REF!"}},{"$f":"SUM(#REF!)","v":{"$error":"#REF!"}},{"$f":"SUM(#REF!)","v":{"$error":"#REF!"}},{"$f":"SUM(#REF!)","v":{"$error":"#REF!"}},{"$f":"SUM(#REF!)","v":{"$error":"#REF!"}},{"$f":"SUM(#REF!)","v":{"$error":"#REF!"}},{"$f":"SUM(#REF!)","v":{"$error":"#REF!"}},{"$f":"SUM(#REF!)","v":{"$error":"#REF!"}},{"$f":"SUM(#REF!)","v":{"$error":"#REF!"}},{"$f":"SUM(#REF!)","v":{"$error":"#REF!"}},{"$f":"SUM(#REF!)","v":{"$error":"#REF!"}},{"$f":"SUM(#REF!)","v":{"$error":"#REF!"}},{"$f":"SUM(#REF!)","v":{"$error":"#REF!"}},{"$f":"SUM(#REF!)","v":{"$error":"#REF!"}},{"$f":"SUM(#REF!)","v":{"$error":"#REF!"}},{"$f":"SUM(#REF!)","v":{"$error":"#REF!"}},{"$f":"SUM(#REF!)","v":{"$error":"#REF!"}},{"$f":"SUM(#REF!)","v":{"$error":"#REF!"}},{"$f":"SUM(#REF!)","v":{"$error":"#REF!"}},{"$f":"SUM(#REF!)","v":{"$error":"#REF!"}},{"$f":"SUM(#REF!)","v":{"$error":"#REF!"}},{"$f":"SUM(#REF!)","v":{"$error":"#REF!"}},{"$f":"SUM(#REF!)","v":{"$error":"#REF!"}},{"$f":"SUM(#REF!)","v":{"$error":"#REF!"}},{"$f":"SUM(#REF!)","v":{"$error":"#REF!"}},{"$f":"SUM(#REF!)","v":{"$error":"#REF!"}},{"$f":"SUM(#REF!)","v":{"$error":"#REF!"}},{"$f":"SUM(#REF!)","v":{"$error":"#REF!"}},{"$f":"SUM(#REF!)","v":{"$error":"#REF!"}},{"$f":"SUM(#REF!)","v":{"$error":"#REF!"}},{"$f":"SUM(#REF!)","v":{"$error":"#REF!"}},{"$f":"SUM(#REF!)","v":{"$error":"#REF!"}},{"$f":"SUM(#REF!)","v":{"$error":"#REF!"}},{"$f":"SUM(#REF!)","v":{"$error":"#REF!"}},{"$f":"SUM(#REF!)","v":{"$error":"#REF!"}},{"$f":"SUM(#REF!)","v":{"$error":"#REF!"}},{"$f":"SUM(#REF!)","v":{"$error":"#REF!"}},{"$f":"SUM(#REF!)","v":{"$error":"#REF!"}},{"$f":"SUM(#REF!)","v":{"$error":"#REF!"}},{"$f":"SUM(#REF!)","v":{"$error":"#REF!"}},{"$f":"SUM(#REF!)","v":{"$error":"#REF!"}},{"$f":"SUM(#REF!)","v":{"$error":"#REF!"}},{"$f":"SUM(#REF!)","v":{"$error":"#REF!"}},{"$f":"SUM(#REF!)","v":{"$error":"#REF!"}},{"$f":"SUM(#REF!)","v":{"$error":"#REF!"}},{"$f":"SUM(#REF!)","v":{"$error":"#REF!"}},{"$f":"SUM(#REF!)","v":{"$error":"#REF!"}},{"$f":"SUM(#REF!)","v":{"$error":"#REF!"}},{"$f":"SUM(#REF!)","v":{"$error":"#REF!"}},{"$f":"SUM(#REF!)","v":{"$error":"#REF!"}},{"$f":"SUM(#REF!)","v":{"$error":"#REF!"}},{"$f":"SUM(#REF!)","v":{"$error":"#REF!"}},{"$f":"SUM(#REF!)","v":{"$error":"#REF!"}},{"$f":"SUM(#REF!)","v":{"$error":"#REF!"}},{"$f":"SUM(#REF!)","v":{"$error":"#REF!"}},{"$f":"SUM(#REF!)","v":{"$error":"#REF!"}},{"$f":"SUM(#REF!)","v":{"$error":"#REF!"}},{"$f":"SUM(#REF!)","v":{"$error":"#REF!"}},{"$f":"SUM(#REF!)","v":{"$error":"#REF!"}},{"$f":"SUM(#REF!)","v":{"$error":"#REF!"}},{"$f":"SUM(#REF!)","v":{"$error":"#REF!"}},{"$f":"SUM(#REF!)","v":{"$error":"#REF!"}},{"$f":"SUM(#REF!)","v":{"$error":"#REF!"}},{"$f":"SUM(#REF!)","v":{"$error":"#REF!"}},{"$f":"SUM(#REF!)","v":{"$error":"#REF!"}},{"$f":"SUM(#REF!)","v":{"$error":"#REF!"}},{"$f":"SUM(#REF!)","v":{"$error":"#REF!"}},{"$f":"SUM(#REF!)","v":{"$error":"#REF!"}},{"$f":"SUM(#REF!)","v":{"$error":"#REF!"}},{"$f":"SUM(#REF!)","v":{"$error":"#REF!"}},{"$f":"SUM(#REF!)","v":{"$error":"#REF!"}},{"$f":"SUM(#REF!)","v":{"$error":"#REF!"}},{"$f":"SUM(#REF!)","v":{"$error":"#REF!"}},{"$f":"SUM(#REF!)","v":{"$error":"#REF!"}},{"$f":"SUM(#REF!)","v":{"$error":"#REF!"}},{"$f":"SUM(#REF!)","v":{"$error":"#REF!"}},{"$f":"SUM(#REF!)","v":{"$error":"#REF!"}},{"$f":"SUM(#REF!)","v":{"$error":"#REF!"}},{"$f":"SUM(#REF!)","v":{"$error":"#REF!"}},{"$f":"SUM(#REF!)","v":{"$error":"#REF!"}},{"$f":"SUM(#REF!)","v":{"$error":"#REF!"}},{"$f":"SUM(#REF!)","v":{"$error":"#REF!"}},{"$f":"SUM(#REF!)","v":{"$error":"#REF!"}},{"$f":"SUM(#REF!)","v":{"$error":"#REF!"}},{"$f":"SUM(#REF!)","v":{"$error":"#REF!"}},{"$f":"SUM(#REF!)","v":{"$error":"#REF!"}},{"$f":"SUM(#REF!)","v":{"$error":"#REF!"}},{"$f":"SUM(#REF!)","v":{"$error":"#REF!"}},{"$f":"SUM(#REF!)","v":{"$error":"#REF!"}},{"$f":"SUM(#REF!)","v":{"$error":"#REF!"}},{"$f":"SUM(#REF!)","v":{"$error":"#REF!"}},{"$f":"SUM(#REF!)","v":{"$error":"#REF!"}},{"$f":"SUM(#REF!)","v":{"$error":"#REF!"}},{"$f":"SUM(#REF!)","v":{"$error":"#REF!"}},{"$f":"SUM(#REF!)","v":{"$error":"#REF!"}},{"$f":"SUM(#REF!)","v":{"$error":"#REF!"}},{"$f":"SUM(#REF!)","v":{"$error":"#REF!"}},{"$f":"SUM(#REF!)","v":{"$error":"#REF!"}},{"$f":"SUM(#REF!)","v":{"$error":"#REF!"}},{"$f":"SUM(#REF!)","v":{"$error":"#REF!"}},{"$f":"SUM(#REF!)","v":{"$error":"#REF!"}},{"$f":"SUM(#REF!)","v":{"$error":"#REF!"}},{"$f":"SUM(#REF!)","v":{"$error":"#REF!"}},{"$f":"SUM(#REF!)","v":{"$error":"#REF!"}},{"$f":"SUM(#REF!)","v":{"$error":"#REF!"}},{"$f":"SUM(#REF!)","v":{"$error":"#REF!"}},{"$f":"SUM(#REF!)","v":{"$error":"#REF!"}},{"$f":"SUM(#REF!)","v":{"$error":"#REF!"}},{"$f":"SUM(#REF!)","v":{"$error":"#REF!"}},{"$f":"SUM(#REF!)","v":{"$error":"#REF!"}},{"$f":"SUM(#REF!)","v":{"$error":"#REF!"}},{"$f":"SUM(#REF!)","v":{"$error":"#REF!"}},{"$f":"SUM(#REF!)","v":{"$error":"#REF!"}},{"$f":"SUM(#REF!)","v":{"$error":"#REF!"}},{"$f":"SUM(#REF!)","v":{"$error":"#REF!"}},{"$f":"SUM(#REF!)","v":{"$error":"#REF!"}},{"$f":"SUM(#REF!)","v":{"$error":"#REF!"}},{"$f":"SUM(#REF!)","v":{"$error":"#REF!"}},{"$f":"SUM(#REF!)","v":{"$error":"#REF!"}},{"$f":"SUM(#REF!)","v":{"$error":"#REF!"}},{"$f":"SUM(#REF!)","v":{"$error":"#REF!"}},{"$f":"SUM(#REF!)","v":{"$error":"#REF!"}},{"$f":"SUM(#REF!)","v":{"$error":"#REF!"}},{"$f":"SUM(#REF!)","v":{"$error":"#REF!"}},{"$f":"SUM(#REF!)","v":{"$error":"#REF!"}},{"$f":"SUM(#REF!)","v":{"$error":"#REF!"}},{"$f":"SUM(#REF!)","v":{"$error":"#REF!"}},{"$f":"SUM(#REF!)","v":{"$error":"#REF!"}},{"$f":"SUM(#REF!)","v":{"$error":"#REF!"}},{"$f":"SUM(#REF!)","v":{"$error":"#REF!"}},{"$f":"SUM(#REF!)","v":{"$error":"#REF!"}},{"$f":"SUM(#REF!)","v":{"$error":"#REF!"}},{"$f":"SUM(#REF!)","v":{"$error":"#REF!"}},{"$f":"SUM(#REF!)","v":{"$error":"#REF!"}},{"$f":"SUM(#REF!)","v":{"$error":"#REF!"}},{"$f":"SUM(#REF!)","v":{"$error":"#REF!"}},{"$f":"SUM(#REF!)","v":{"$error":"#REF!"}},{"$f":"SUM(#REF!)","v":{"$error":"#REF!"}},{"$f":"SUM(#REF!)","v":{"$error":"#REF!"}},{"$f":"SUM(#REF!)","v":{"$error":"#REF!"}},{"$f":"SUM(#REF!)","v":{"$error":"#REF!"}},{"$f":"SUM(#REF!)","v":{"$error":"#REF!"}},{"$f":"SUM(#REF!)","v":{"$error":"#REF!"}},{"$f":"SUM(#REF!)","v":{"$error":"#REF!"}},{"$f":"SUM(#REF!)","v":{"$error":"#REF!"}},{"$f":"SUM(#REF!)","v":{"$error":"#REF!"}},{"$f":"SUM(#REF!)","v":{"$error":"#REF!"}},{"$f":"SUM(#REF!)","v":{"$error":"#REF!"}},{"$f":"SUM(#REF!)","v":{"$error":"#REF!"}},{"$f":"SUM(#REF!)","v":{"$error":"#REF!"}},{"$f":"SUM(#REF!)","v":{"$error":"#REF!"}},{"$f":"SUM(#REF!)","v":{"$error":"#REF!"}},{"$f":"SUM(#REF!)","v":{"$error":"#REF!"}},{"$f":"SUM(#REF!)","v":{"$error":"#REF!"}},{"$f":"SUM(#REF!)","v":{"$error":"#REF!"}},{"$f":"SUM(#REF!)","v":{"$error":"#REF!"}},{"$f":"SUM(#REF!)","v":{"$error":"#REF!"}},{"$f":"SUM(#REF!)","v":{"$error":"#REF!"}},{"$f":"SUM(#REF!)","v":{"$error":"#REF!"}},{"$f":"SUM(#REF!)","v":{"$error":"#REF!"}},{"$f":"SUM(#REF!)","v":{"$error":"#REF!"}},{"$f":"SUM(#REF!)","v":{"$error":"#REF!"}},{"$f":"SUM(#REF!)","v":{"$error":"#REF!"}},{"$f":"SUM(#REF!)","v":{"$error":"#REF!"}},{"$f":"SUM(#REF!)","v":{"$error":"#REF!"}},{"$f":"SUM(#REF!)","v":{"$error":"#REF!"}},{"$f":"SUM(#REF!)","v":{"$error":"#REF!"}},{"$f":"SUM(#REF!)","v":{"$error":"#REF!"}},{"$f":"SUM(#REF!)","v":{"$error":"#REF!"}},{"$f":"SUM(#REF!)","v":{"$error":"#REF!"}},{"$f":"SUM(#REF!)","v":{"$error":"#REF!"}},{"$f":"SUM(#REF!)","v":{"$error":"#REF!"}},{"$f":"SUM(#REF!)","v":{"$error":"#REF!"}},{"$f":"SUM(#REF!)","v":{"$error":"#REF!"}},{"$f":"SUM(#REF!)","v":{"$error":"#REF!"}},{"$f":"SUM(#REF!)","v":{"$error":"#REF!"}},{"$f":"SUM(#REF!)","v":{"$error":"#REF!"}},{"$f":"SUM(#REF!)","v":{"$error":"#REF!"}},{"$f":"SUM(#REF!)","v":{"$error":"#REF!"}},{"$f":"SUM(#REF!)","v":{"$error":"#REF!"}},{"$f":"SUM(#REF!)","v":{"$error":"#REF!"}},{"$f":"SUM(#REF!)","v":{"$error":"#REF!"}},{"$f":"SUM(#REF!)","v":{"$error":"#REF!"}},{"$f":"SUM(#REF!)","v":{"$error":"#REF!"}},{"$f":"SUM(#REF!)","v":{"$error":"#REF!"}},{"$f":"SUM(#REF!)","v":{"$error":"#REF!"}},{"$f":"SUM(#REF!)","v":{"$error":"#REF!"}},{"$f":"SUM(#REF!)","v":{"$error":"#REF!"}},{"$f":"SUM(#REF!)","v":{"$error":"#REF!"}},{"$f":"SUM(#REF!)","v":{"$error":"#REF!"}},{"$f":"SUM(#REF!)","v":{"$error":"#REF!"}},{"$f":"SUM(#REF!)","v":{"$error":"#REF!"}},{"$f":"SUM(#REF!)","v":{"$error":"#REF!"}},{"$f":"SUM(#REF!)","v":{"$error":"#REF!"}},{"$f":"SUM(#REF!)","v":{"$error":"#REF!"}},{"$f":"SUM(#REF!)","v":{"$error":"#REF!"}},{"$f":"SUM(#REF!)","v":{"$error":"#REF!"}},{"$f":"SUM(#REF!)","v":{"$error":"#REF!"}},{"$f":"SUM(#REF!)","v":{"$error":"#REF!"}},{"$f":"SUM(#REF!)","v":{"$error":"#REF!"}},{"$f":"SUM(#REF!)","v":{"$error":"#REF!"}},{"$f":"SUM(#REF!)","v":{"$error":"#REF!"}},{"$f":"SUM(#REF!)","v":{"$error":"#REF!"}},{"$f":"SUM(#REF!)","v":{"$error":"#REF!"}},{"$f":"SUM(#REF!)","v":{"$error":"#REF!"}},{"$f":"SUM(#REF!)","v":{"$error":"#REF!"}},{"$f":"SUM(#REF!)","v":{"$error":"#REF!"}},{"$f":"SUM(#REF!)","v":{"$error":"#REF!"}},{"$f":"SUM(#REF!)","v":{"$error":"#REF!"}},{"$f":"SUM(#REF!)","v":{"$error":"#REF!"}},{"$f":"SUM(#REF!)","v":{"$error":"#REF!"}},{"$f":"SUM(#REF!)","v":{"$error":"#REF!"}},{"$f":"SUM(#REF!)","v":{"$error":"#REF!"}},{"$f":"SUM(#REF!)","v":{"$error":"#REF!"}},{"$f":"SUM(#REF!)","v":{"$error":"#REF!"}},{"$f":"SUM(#REF!)","v":{"$error":"#REF!"}},{"$f":"SUM(#REF!)","v":{"$error":"#REF!"}},{"$f":"SUM(#REF!)","v":{"$error":"#REF!"}},{"$f":"SUM(#REF!)","v":{"$error":"#REF!"}},{"$f":"SUM(#REF!)","v":{"$error":"#REF!"}},{"$f":"SUM(#REF!)","v":{"$error":"#REF!"}},{"$f":"SUM(#REF!)","v":{"$error":"#REF!"}},{"$f":"SUM(#REF!)","v":{"$error":"#REF!"}},{"$f":"SUM(#REF!)","v":{"$error":"#REF!"}},{"$f":"SUM(#REF!)","v":{"$error":"#REF!"}},{"$f":"SUM(#REF!)","v":{"$error":"#REF!"}},{"$f":"SUM(#REF!)","v":{"$error":"#REF!"}},{"$f":"SUM(#REF!)","v":{"$error":"#REF!"}},{"$f":"SUM(#REF!)","v":{"$error":"#REF!"}},{"$f":"SUM(#REF!)","v":{"$error":"#REF!"}},{"$f":"SUM(#REF!)","v":{"$error":"#REF!"}},{"$f":"SUM(#REF!)","v":{"$error":"#REF!"}},{"$f":"SUM(#REF!)","v":{"$error":"#REF!"}},{"$f":"SUM(#REF!)","v":{"$error":"#REF!"}},{"$f":"SUM(#REF!)","v":{"$error":"#REF!"}},{"$f":"SUM(#REF!)","v":{"$error":"#REF!"}},{"$f":"SUM(#REF!)","v":{"$error":"#REF!"}},{"$f":"SUM(#REF!)","v":{"$error":"#REF!"}},{"$f":"SUM(#REF!)","v":{"$error":"#REF!"}},{"$f":"SUM(#REF!)","v":{"$error":"#REF!"}},{"$f":"SUM(#REF!)","v":{"$error":"#REF!"}},{"$f":"SUM(#REF!)","v":{"$error":"#REF!"}},{"$f":"SUM(#REF!)","v":{"$error":"#REF!"}},{"$f":"SUM(#REF!)","v":{"$error":"#REF!"}},{"$f":"SUM(#REF!)","v":{"$error":"#REF!"}},{"$f":"SUM(#REF!)","v":{"$error":"#REF!"}},{"$f":"SUM(#REF!)","v":{"$error":"#REF!"}},{"$f":"SUM(#REF!)","v":{"$error":"#REF!"}},{"$f":"SUM(#REF!)","v":{"$error":"#REF!"}},{"$f":"SUM(#REF!)","v":{"$error":"#REF!"}},{"$f":"SUM(#REF!)","v":{"$error":"#REF!"}},{"$f":"SUM(#REF!)","v":{"$error":"#REF!"}},{"$f":"SUM(#REF!)","v":{"$error":"#REF!"}},{"$f":"SUM(#REF!)","v":{"$error":"#REF!"}},{"$f":"SUM(#REF!)","v":{"$error":"#REF!"}},{"$f":"SUM(#REF!)","v":{"$error":"#REF!"}},{"$f":"SUM(#REF!)","v":{"$error":"#REF!"}},{"$f":"SUM(#REF!)","v":{"$error":"#REF!"}},{"$f":"SUM(#REF!)","v":{"$error":"#REF!"}},{"$f":"SUM(#REF!)","v":{"$error":"#REF!"}},{"$f":"SUM(#REF!)","v":{"$error":"#REF!"}},{"$f":"SUM(#REF!)","v":{"$error":"#REF!"}},{"$f":"SUM(#REF!)","v":{"$error":"#REF!"}},{"$f":"SUM(#REF!)","v":{"$error":"#REF!"}},{"$f":"SUM(#REF!)","v":{"$error":"#REF!"}},{"$f":"SUM(#REF!)","v":{"$error":"#REF!"}},{"$f":"SUM(#REF!)","v":{"$error":"#REF!"}},{"$f":"SUM(#REF!)","v":{"$error":"#REF!"}},{"$f":"SUM(#REF!)","v":{"$error":"#REF!"}},{"$f":"SUM(#REF!)","v":{"$error":"#REF!"}},{"$f":"SUM(#REF!)","v":{"$error":"#REF!"}},{"$f":"SUM(#REF!)","v":{"$error":"#REF!"}},{"$f":"SUM(#REF!)","v":{"$error":"#REF!"}},{"$f":"SUM(#REF!)","v":{"$error":"#REF!"}},{"$f":"SUM(#REF!)","v":{"$error":"#REF!"}},{"$f":"SUM(#REF!)","v":{"$error":"#REF!"}},{"$f":"SUM(#REF!)","v":{"$error":"#REF!"}},{"$f":"SUM(#REF!)","v":{"$error":"#REF!"}},{"$f":"SUM(#REF!)","v":{"$error":"#REF!"}},{"$f":"SUM(#REF!)","v":{"$error":"#REF!"}},{"$f":"SUM(#REF!)","v":{"$error":"#REF!"}},{"$f":"SUM(#REF!)","v":{"$error":"#REF!"}},{"$f":"SUM(#REF!)","v":{"$error":"#REF!"}},{"$f":"SUM(#REF!)","v":{"$error":"#REF!"}},{"$f":"SUM(#REF!)","v":{"$error":"#REF!"}},{"$f":"SUM(#REF!)","v":{"$error":"#REF!"}},{"$f":"SUM(#REF!)","v":{"$error":"#REF!"}},{"$f":"SUM(#REF!)","v":{"$error":"#REF!"}},{"$f":"SUM(#REF!)","v":{"$error":"#REF!"}},{"$f":"SUM(#REF!)","v":{"$error":"#REF!"}},{"$f":"SUM(#REF!)","v":{"$error":"#REF!"}},{"$f":"SUM(#REF!)","v":{"$error":"#REF!"}},{"$f":"SUM(#REF!)","v":{"$error":"#REF!"}},{"$f":"SUM(#REF!)","v":{"$error":"#REF!"}},{"$f":"SUM(#REF!)","v":{"$error":"#REF!"}},{"$f":"SUM(#REF!)","v":{"$error":"#REF!"}},{"$f":"SUM(#REF!)","v":{"$error":"#REF!"}},{"$f":"SUM(#REF!)","v":{"$error":"#REF!"}},{"$f":"SUM(#REF!)","v":{"$error":"#REF!"}},{"$f":"SUM(#REF!)","v":{"$error":"#REF!"}},{"$f":"SUM(#REF!)","v":{"$error":"#REF!"}},{"$f":"SUM(#REF!)","v":{"$error":"#REF!"}},{"$f":"SUM(#REF!)","v":{"$error":"#REF!"}},{"$f":"SUM(#REF!)","v":{"$error":"#REF!"}},{"$f":"SUM(#REF!)","v":{"$error":"#REF!"}},{"$f":"SUM(#REF!)","v":{"$error":"#REF!"}},{"$f":"SUM(#REF!)","v":{"$error":"#REF!"}},{"$f":"SUM(#REF!)","v":{"$error":"#REF!"}},{"$f":"SUM(#REF!)","v":{"$error":"#REF!"}},{"$f":"SUM(#REF!)","v":{"$error":"#REF!"}},{"$f":"SUM(#REF!)","v":{"$error":"#REF!"}},{"$f":"SUM(#REF!)","v":{"$error":"#REF!"}},{"$f":"SUM(#REF!)","v":{"$error":"#REF!"}},{"$f":"SUM(#REF!)","v":{"$error":"#REF!"}},{"$f":"SUM(#REF!)","v":{"$error":"#REF!"}},{"$f":"SUM(#REF!)","v":{"$error":"#REF!"}},{"$f":"SUM(#REF!)","v":{"$error":"#REF!"}},{"$f":"SUM(#REF!)","v":{"$error":"#REF!"}},{"$f":"SUM(#REF!)","v":{"$error":"#REF!"}},{"$f":"SUM(#REF!)","v":{"$error":"#REF!"}},{"$f":"SUM(#REF!)","v":{"$error":"#REF!"}},{"$f":"SUM(#REF!)","v":{"$error":"#REF!"}},{"$f":"SUM(#REF!)","v":{"$error":"#REF!"}},{"$f":"SUM(#REF!)","v":{"$error":"#REF!"}},{"$f":"SUM(#REF!)","v":{"$error":"#REF!"}},{"$f":"SUM(#REF!)","v":{"$error":"#REF!"}},{"$f":"SUM(#REF!)","v":{"$error":"#REF!"}},{"$f":"SUM(#REF!)","v":{"$error":"#REF!"}},{"$f":"SUM(#REF!)","v":{"$error":"#REF!"}},{"$f":"SUM(#REF!)","v":{"$error":"#REF!"}},{"$f":"SUM(#REF!)","v":{"$error":"#REF!"}},{"$f":"SUM(#REF!)","v":{"$error":"#REF!"}},{"$f":"SUM(#REF!)","v":{"$error":"#REF!"}},{"$f":"SUM(#REF!)","v":{"$error":"#REF!"}},{"$f":"SUM(#REF!)","v":{"$error":"#REF!"}},{"$f":"SUM(#REF!)","v":{"$error":"#REF!"}},{"$f":"SUM(#REF!)","v":{"$error":"#REF!"}},{"$f":"SUM(#REF!)","v":{"$error":"#REF!"}},{"$f":"SUM(#REF!)","v":{"$error":"#REF!"}},{"$f":"SUM(#REF!)","v":{"$error":"#REF!"}},{"$f":"SUM(#REF!)","v":{"$error":"#REF!"}},{"$f":"SUM(#REF!)","v":{"$error":"#REF!"}},{"$f":"SUM(#REF!)","v":{"$error":"#REF!"}},{"$f":"SUM(#REF!)","v":{"$error":"#REF!"}},{"$f":"SUM(#REF!)","v":{"$error":"#REF!"}},{"$f":"SUM(#REF!)","v":{"$error":"#REF!"}},{"$f":"SUM(#REF!)","v":{"$error":"#REF!"}},{"$f":"SUM(#REF!)","v":{"$error":"#REF!"}},{"$f":"SUM(#REF!)","v":{"$error":"#REF!"}},{"$f":"SUM(#REF!)","v":{"$error":"#REF!"}},{"$f":"SUM(#REF!)","v":{"$error":"#REF!"}},{"$f":"SUM(#REF!)","v":{"$error":"#REF!"}},{"$f":"SUM(#REF!)","v":{"$error":"#REF!"}},{"$f":"SUM(#REF!)","v":{"$error":"#REF!"}},{"$f":"SUM(#REF!)","v":{"$error":"#REF!"}},{"$f":"SUM(#REF!)","v":{"$error":"#REF!"}},{"$f":"SUM(#REF!)","v":{"$error":"#REF!"}},{"$f":"SUM(#REF!)","v":{"$error":"#REF!"}},{"$f":"SUM(#REF!)","v":{"$error":"#REF!"}},{"$f":"SUM(#REF!)","v":{"$error":"#REF!"}},{"$f":"SUM(#REF!)","v":{"$error":"#REF!"}},{"$f":"SUM(#REF!)","v":{"$error":"#REF!"}},{"$f":"SUM(#REF!)","v":{"$error":"#REF!"}},{"$f":"SUM(#REF!)","v":{"$error":"#REF!"}},{"$f":"SUM(#REF!)","v":{"$error":"#REF!"}},{"$f":"SUM(#REF!)","v":{"$error":"#REF!"}},{"$f":"SUM(#REF!)","v":{"$error":"#REF!"}},{"$f":"SUM(#REF!)","v":{"$error":"#REF!"}},{"$f":"SUM(#REF!)","v":{"$error":"#REF!"}},{"$f":"SUM(#REF!)","v":{"$error":"#REF!"}},{"$f":"SUM(#REF!)","v":{"$error":"#REF!"}},{"$f":"SUM(#REF!)","v":{"$error":"#REF!"}},{"$f":"SUM(#REF!)","v":{"$error":"#REF!"}},{"$f":"SUM(#REF!)","v":{"$error":"#REF!"}},{"$f":"SUM(#REF!)","v":{"$error":"#REF!"}},{"$f":"SUM(#REF!)","v":{"$error":"#REF!"}},{"$f":"SUM(#REF!)","v":{"$error":"#REF!"}},{"$f":"SUM(#REF!)","v":{"$error":"#REF!"}},{"$f":"SUM(#REF!)","v":{"$error":"#REF!"}},{"$f":"SUM(#REF!)","v":{"$error":"#REF!"}},{"$f":"SUM(#REF!)","v":{"$error":"#REF!"}},{"$f":"SUM(#REF!)","v":{"$error":"#REF!"}},{"$f":"SUM(#REF!)","v":{"$error":"#REF!"}},{"$f":"SUM(#REF!)","v":{"$error":"#REF!"}},{"$f":"SUM(#REF!)","v":{"$error":"#REF!"}},{"$f":"SUM(#REF!)","v":{"$error":"#REF!"}},{"$f":"SUM(#REF!)","v":{"$error":"#REF!"}},{"$f":"SUM(#REF!)","v":{"$error":"#REF!"}},{"$f":"SUM(#REF!)","v":{"$error":"#REF!"}},{"$f":"SUM(#REF!)","v":{"$error":"#REF!"}},{"$f":"SUM(#REF!)","v":{"$error":"#REF!"}},{"$f":"SUM(#REF!)","v":{"$error":"#REF!"}},{"$f":"SUM(#REF!)","v":{"$error":"#REF!"}},{"$f":"SUM(#REF!)","v":{"$error":"#REF!"}},{"$f":"SUM(#REF!)","v":{"$error":"#REF!"}},{"$f":"SUM(#REF!)","v":{"$error":"#REF!"}},{"$f":"SUM(#REF!)","v":{"$error":"#REF!"}},{"$f":"SUM(#REF!)","v":{"$error":"#REF!"}},{"$f":"SUM(#REF!)","v":{"$error":"#REF!"}},{"$f":"SUM(#REF!)","v":{"$error":"#REF!"}},{"$f":"SUM(#REF!)","v":{"$error":"#REF!"}},{"$f":"SUM(#REF!)","v":{"$error":"#REF!"}},{"$f":"SUM(#REF!)","v":{"$error":"#REF!"}},{"$f":"SUM(#REF!)","v":{"$error":"#REF!"}},{"$f":"SUM(#REF!)","v":{"$error":"#REF!"}},{"$f":"SUM(#REF!)","v":{"$error":"#REF!"}},{"$f":"SUM(#REF!)","v":{"$error":"#REF!"}},{"$f":"SUM(#REF!)","v":{"$error":"#REF!"}},{"$f":"SUM(#REF!)","v":{"$error":"#REF!"}},{"$f":"SUM(#REF!)","v":{"$error":"#REF!"}},{"$f":"SUM(#REF!)","v":{"$error":"#REF!"}},{"$f":"SUM(#REF!)","v":{"$error":"#REF!"}},{"$f":"SUM(#REF!)","v":{"$error":"#REF!"}},{"$f":"SUM(#REF!)","v":{"$error":"#REF!"}},{"$f":"SUM(#REF!)","v":{"$error":"#REF!"}},{"$f":"SUM(#REF!)","v":{"$error":"#REF!"}},{"$f":"SUM(#REF!)","v":{"$error":"#REF!"}},{"$f":"SUM(#REF!)","v":{"$error":"#REF!"}},{"$f":"SUM(#REF!)","v":{"$error":"#REF!"}},{"$f":"SUM(#REF!)","v":{"$error":"#REF!"}},{"$f":"SUM(#REF!)","v":{"$error":"#REF!"}},{"$f":"SUM(#REF!)","v":{"$error":"#REF!"}},{"$f":"SUM(#REF!)","v":{"$error":"#REF!"}},{"$f":"SUM(#REF!)","v":{"$error":"#REF!"}},{"$f":"SUM(#REF!)","v":{"$error":"#REF!"}},{"$f":"SUM(#REF!)","v":{"$error":"#REF!"}},{"$f":"SUM(#REF!)","v":{"$error":"#REF!"}},{"$f":"SUM(#REF!)","v":{"$error":"#REF!"}},{"$f":"SUM(#REF!)","v":{"$error":"#REF!"}},{"$f":"SUM(#REF!)","v":{"$error":"#REF!"}},{"$f":"SUM(#REF!)","v":{"$error":"#REF!"}},{"$f":"SUM(#REF!)","v":{"$error":"#REF!"}},{"$f":"SUM(#REF!)","v":{"$error":"#REF!"}},{"$f":"SUM(#REF!)","v":{"$error":"#REF!"}},{"$f":"SUM(#REF!)","v":{"$error":"#REF!"}},{"$f":"SUM(#REF!)","v":{"$error":"#REF!"}},{"$f":"SUM(#REF!)","v":{"$error":"#REF!"}},{"$f":"SUM(#REF!)","v":{"$error":"#REF!"}},{"$f":"SUM(#REF!)","v":{"$error":"#REF!"}},{"$f":"SUM(#REF!)","v":{"$error":"#REF!"}},{"$f":"SUM(#REF!)","v":{"$error":"#REF!"}},{"$f":"SUM(#REF!)","v":{"$error":"#REF!"}},{"$f":"SUM(#REF!)","v":{"$error":"#REF!"}},{"$f":"SUM(#REF!)","v":{"$error":"#REF!"}},{"$f":"SUM(#REF!)","v":{"$error":"#REF!"}},{"$f":"SUM(#REF!)","v":{"$error":"#REF!"}},{"$f":"SUM(#REF!)","v":{"$error":"#REF!"}},{"$f":"SUM(#REF!)","v":{"$error":"#REF!"}},{"$f":"SUM(#REF!)","v":{"$error":"#REF!"}},{"$f":"SUM(#REF!)","v":{"$error":"#REF!"}},{"$f":"SUM(#REF!)","v":{"$error":"#REF!"}},{"$f":"SUM(#REF!)","v":{"$error":"#REF!"}},{"$f":"SUM(#REF!)","v":{"$error":"#REF!"}},{"$f":"SUM(#REF!)","v":{"$error":"#REF!"}},{"$f":"SUM(#REF!)","v":{"$error":"#REF!"}},{"$f":"SUM(#REF!)","v":{"$error":"#REF!"}},{"$f":"SUM(#REF!)","v":{"$error":"#REF!"}},{"$f":"SUM(#REF!)","v":{"$error":"#REF!"}},{"$f":"SUM(#REF!)","v":{"$error":"#REF!"}},{"$f":"SUM(#REF!)","v":{"$error":"#REF!"}},{"$f":"SUM(#REF!)","v":{"$error":"#REF!"}},{"$f":"SUM(#REF!)","v":{"$error":"#REF!"}},{"$f":"SUM(#REF!)","v":{"$error":"#REF!"}},{"$f":"SUM(#REF!)","v":{"$error":"#REF!"}},{"$f":"SUM(#REF!)","v":{"$error":"#REF!"}},{"$f":"SUM(#REF!)","v":{"$error":"#REF!"}},{"$f":"SUM(#REF!)","v":{"$error":"#REF!"}},{"$f":"SUM(#REF!)","v":{"$error":"#REF!"}},{"$f":"SUM(#REF!)","v":{"$error":"#REF!"}},{"$f":"SUM(#REF!)","v":{"$error":"#REF!"}},{"$f":"SUM(#REF!)","v":{"$error":"#REF!"}},{"$f":"SUM(#REF!)","v":{"$error":"#REF!"}},{"$f":"SUM(#REF!)","v":{"$error":"#REF!"}},{"$f":"SUM(#REF!)","v":{"$error":"#REF!"}},{"$f":"SUM(#REF!)","v":{"$error":"#REF!"}},{"$f":"SUM(#REF!)","v":{"$error":"#REF!"}},{"$f":"SUM(#REF!)","v":{"$error":"#REF!"}},{"$f":"SUM(#REF!)","v":{"$error":"#REF!"}},{"$f":"SUM(#REF!)","v":{"$error":"#REF!"}},{"$f":"SUM(#REF!)","v":{"$error":"#REF!"}},{"$f":"SUM(#REF!)","v":{"$error":"#REF!"}},{"$f":"SUM(#REF!)","v":{"$error":"#REF!"}},{"$f":"SUM(#REF!)","v":{"$error":"#REF!"}},{"$f":"SUM(#REF!)","v":{"$error":"#REF!"}},{"$f":"SUM(#REF!)","v":{"$error":"#REF!"}},{"$f":"SUM(#REF!)","v":{"$error":"#REF!"}},{"$f":"SUM(#REF!)","v":{"$error":"#REF!"}},{"$f":"SUM(#REF!)","v":{"$error":"#REF!"}},{"$f":"SUM(#REF!)","v":{"$error":"#REF!"}},{"$f":"SUM(#REF!)","v":{"$error":"#REF!"}},{"$f":"SUM(#REF!)","v":{"$error":"#REF!"}},{"$f":"SUM(#REF!)","v":{"$error":"#REF!"}},{"$f":"SUM(#REF!)","v":{"$error":"#REF!"}},{"$f":"SUM(#REF!)","v":{"$error":"#REF!"}},{"$f":"SUM(#REF!)","v":{"$error":"#REF!"}},{"$f":"SUM(#REF!)","v":{"$error":"#REF!"}},{"$f":"SUM(#REF!)","v":{"$error":"#REF!"}},{"$f":"SUM(#REF!)","v":{"$error":"#REF!"}},{"$f":"SUM(#REF!)","v":{"$error":"#REF!"}},{"$f":"SUM(#REF!)","v":{"$error":"#REF!"}},{"$f":"SUM(#REF!)","v":{"$error":"#REF!"}},{"$f":"SUM(#REF!)","v":{"$error":"#REF!"}},{"$f":"SUM(#REF!)","v":{"$error":"#REF!"}},{"$f":"SUM(#REF!)","v":{"$error":"#REF!"}},{"$f":"SUM(#REF!)","v":{"$error":"#REF!"}},{"$f":"SUM(#REF!)","v":{"$error":"#REF!"}},{"$f":"SUM(#REF!)","v":{"$error":"#REF!"}},{"$f":"SUM(#REF!)","v":{"$error":"#REF!"}},{"$f":"SUM(#REF!)","v":{"$error":"#REF!"}},{"$f":"SUM(#REF!)","v":{"$error":"#REF!"}},{"$f":"SUM(#REF!)","v":{"$error":"#REF!"}},{"$f":"SUM(#REF!)","v":{"$error":"#REF!"}},{"$f":"SUM(#REF!)","v":{"$error":"#REF!"}},{"$f":"SUM(#REF!)","v":{"$error":"#REF!"}},{"$f":"SUM(#REF!)","v":{"$error":"#REF!"}},{"$f":"SUM(#REF!)","v":{"$error":"#REF!"}},{"$f":"SUM(#REF!)","v":{"$error":"#REF!"}},{"$f":"SUM(#REF!)","v":{"$error":"#REF!"}},{"$f":"SUM(#REF!)","v":{"$error":"#REF!"}},{"$f":"SUM(#REF!)","v":{"$error":"#REF!"}},{"$f":"SUM(#REF!)","v":{"$error":"#REF!"}},{"$f":"SUM(#REF!)","v":{"$error":"#REF!"}},{"$f":"SUM(#REF!)","v":{"$error":"#REF!"}},{"$f":"SUM(#REF!)","v":{"$error":"#REF!"}},{"$f":"SUM(#REF!)","v":{"$error":"#REF!"}},{"$f":"SUM(#REF!)","v":{"$error":"#REF!"}},{"$f":"SUM(#REF!)","v":{"$error":"#REF!"}},{"$f":"SUM(#REF!)","v":{"$error":"#REF!"}},{"$f":"SUM(#REF!)","v":{"$error":"#REF!"}},{"$f":"SUM(#REF!)","v":{"$error":"#REF!"}},{"$f":"SUM(#REF!)","v":{"$error":"#REF!"}},{"$f":"SUM(#REF!)","v":{"$error":"#REF!"}},{"$f":"SUM(#REF!)","v":{"$error":"#REF!"}},{"$f":"SUM(#REF!)","v":{"$error":"#REF!"}},{"$f":"SUM(#REF!)","v":{"$error":"#REF!"}},{"$f":"SUM(#REF!)","v":{"$error":"#REF!"}},{"$f":"SUM(#REF!)","v":{"$error":"#REF!"}},{"$f":"SUM(#REF!)","v":{"$error":"#REF!"}},{"$f":"SUM(#REF!)","v":{"$error":"#REF!"}},{"$f":"SUM(#REF!)","v":{"$error":"#REF!"}},{"$f":"SUM(#REF!)","v":{"$error":"#REF!"}},{"$f":"SUM(#REF!)","v":{"$error":"#REF!"}},{"$f":"SUM(#REF!)","v":{"$error":"#REF!"}},{"$f":"SUM(#REF!)","v":{"$error":"#REF!"}},{"$f":"SUM(#REF!)","v":{"$error":"#REF!"}},{"$f":"SUM(#REF!)","v":{"$error":"#REF!"}},{"$f":"SUM(#REF!)","v":{"$error":"#REF!"}},{"$f":"SUM(#REF!)","v":{"$error":"#REF!"}},{"$f":"SUM(#REF!)","v":{"$error":"#REF!"}},{"$f":"SUM(#REF!)","v":{"$error":"#REF!"}},{"$f":"SUM(#REF!)","v":{"$error":"#REF!"}},{"$f":"SUM(#REF!)","v":{"$error":"#REF!"}},{"$f":"SUM(#REF!)","v":{"$error":"#REF!"}},{"$f":"SUM(#REF!)","v":{"$error":"#REF!"}},{"$f":"SUM(#REF!)","v":{"$error":"#REF!"}},{"$f":"SUM(#REF!)","v":{"$error":"#REF!"}},{"$f":"SUM(#REF!)","v":{"$error":"#REF!"}},{"$f":"SUM(#REF!)","v":{"$error":"#REF!"}},{"$f":"SUM(#REF!)","v":{"$error":"#REF!"}},{"$f":"SUM(#REF!)","v":{"$error":"#REF!"}},{"$f":"SUM(#REF!)","v":{"$error":"#REF!"}},{"$f":"SUM(#REF!)","v":{"$error":"#REF!"}},{"$f":"SUM(#REF!)","v":{"$error":"#REF!"}},{"$f":"SUM(#REF!)","v":{"$error":"#REF!"}},{"$f":"SUM(#REF!)","v":{"$error":"#REF!"}},{"$f":"SUM(#REF!)","v":{"$error":"#REF!"}},{"$f":"SUM(#REF!)","v":{"$error":"#REF!"}},{"$f":"SUM(#REF!)","v":{"$error":"#REF!"}},{"$f":"SUM(#REF!)","v":{"$error":"#REF!"}},{"$f":"SUM(#REF!)","v":{"$error":"#REF!"}},{"$f":"SUM(#REF!)","v":{"$error":"#REF!"}},{"$f":"SUM(#REF!)","v":{"$error":"#REF!"}},{"$f":"SUM(#REF!)","v":{"$error":"#REF!"}},{"$f":"SUM(#REF!)","v":{"$error":"#REF!"}},{"$f":"SUM(#REF!)","v":{"$error":"#REF!"}},{"$f":"SUM(#REF!)","v":{"$error":"#REF!"}},{"$f":"SUM(#REF!)","v":{"$error":"#REF!"}},{"$f":"SUM(#REF!)","v":{"$error":"#REF!"}},{"$f":"SUM(#REF!)","v":{"$error":"#REF!"}},{"$f":"SUM(#REF!)","v":{"$error":"#REF!"}},{"$f":"SUM(#REF!)","v":{"$error":"#REF!"}},{"$f":"SUM(#REF!)","v":{"$error":"#REF!"}},{"$f":"SUM(#REF!)","v":{"$error":"#REF!"}},{"$f":"SUM(#REF!)","v":{"$error":"#REF!"}},{"$f":"SUM(#REF!)","v":{"$error":"#REF!"}},{"$f":"SUM(#REF!)","v":{"$error":"#REF!"}},{"$f":"SUM(#REF!)","v":{"$error":"#REF!"}},{"$f":"SUM(#REF!)","v":{"$error":"#REF!"}},{"$f":"SUM(#REF!)","v":{"$error":"#REF!"}},{"$f":"SUM(#REF!)","v":{"$error":"#REF!"}},{"$f":"SUM(#REF!)","v":{"$error":"#REF!"}},{"$f":"SUM(#REF!)","v":{"$error":"#REF!"}},{"$f":"SUM(#REF!)","v":{"$error":"#REF!"}},{"$f":"SUM(#REF!)","v":{"$error":"#REF!"}},{"$f":"SUM(#REF!)","v":{"$error":"#REF!"}},{"$f":"SUM(#REF!)","v":{"$error":"#REF!"}},{"$f":"SUM(#REF!)","v":{"$error":"#REF!"}},{"$f":"SUM(#REF!)","v":{"$error":"#REF!"}},{"$f":"SUM(#REF!)","v":{"$error":"#REF!"}},{"$f":"SUM(#REF!)","v":{"$error":"#REF!"}},{"$f":"SUM(#REF!)","v":{"$error":"#REF!"}},{"$f":"SUM(#REF!)","v":{"$error":"#REF!"}},{"$f":"SUM(#REF!)","v":{"$error":"#REF!"}},{"$f":"SUM(#REF!)","v":{"$error":"#REF!"}},{"$f":"SUM(#REF!)","v":{"$error":"#REF!"}},{"$f":"SUM(#REF!)","v":{"$error":"#REF!"}},{"$f":"SUM(#REF!)","v":{"$error":"#REF!"}},{"$f":"SUM(#REF!)","v":{"$error":"#REF!"}},{"$f":"SUM(#REF!)","v":{"$error":"#REF!"}},{"$f":"SUM(#REF!)","v":{"$error":"#REF!"}},{"$f":"SUM(#REF!)","v":{"$error":"#REF!"}},{"$f":"SUM(#REF!)","v":{"$error":"#REF!"}},{"$f":"SUM(#REF!)","v":{"$error":"#REF!"}},{"$f":"SUM(#REF!)","v":{"$error":"#REF!"}},{"$f":"SUM(#REF!)","v":{"$error":"#REF!"}},{"$f":"SUM(#REF!)","v":{"$error":"#REF!"}},{"$f":"SUM(#REF!)","v":{"$error":"#REF!"}},{"$f":"SUM(#REF!)","v":{"$error":"#REF!"}},{"$f":"SUM(#REF!)","v":{"$error":"#REF!"}},{"$f":"SUM(#REF!)","v":{"$error":"#REF!"}},{"$f":"SUM(#REF!)","v":{"$error":"#REF!"}},{"$f":"SUM(#REF!)","v":{"$error":"#REF!"}},{"$f":"SUM(#REF!)","v":{"$error":"#REF!"}},{"$f":"SUM(#REF!)","v":{"$error":"#REF!"}},{"$f":"SUM(#REF!)","v":{"$error":"#REF!"}},{"$f":"SUM(#REF!)","v":{"$error":"#REF!"}},{"$f":"SUM(#REF!)","v":{"$error":"#REF!"}},{"$f":"SUM(#REF!)","v":{"$error":"#REF!"}},{"$f":"SUM(#REF!)","v":{"$error":"#REF!"}},{"$f":"SUM(#REF!)","v":{"$error":"#REF!"}},{"$f":"SUM(#REF!)","v":{"$error":"#REF!"}},{"$f":"SUM(#REF!)","v":{"$error":"#REF!"}},{"$f":"SUM(#REF!)","v":{"$error":"#REF!"}},{"$f":"SUM(#REF!)","v":{"$error":"#REF!"}},{"$f":"SUM(#REF!)","v":{"$error":"#REF!"}},{"$f":"SUM(#REF!)","v":{"$error":"#REF!"}},{"$f":"SUM(#REF!)","v":{"$error":"#REF!"}},{"$f":"SUM(#REF!)","v":{"$error":"#REF!"}},{"$f":"SUM(#REF!)","v":{"$error":"#REF!"}},{"$f":"SUM(#REF!)","v":{"$error":"#REF!"}},{"$f":"SUM(#REF!)","v":{"$error":"#REF!"}},{"$f":"SUM(#REF!)","v":{"$error":"#REF!"}},{"$f":"SUM(#REF!)","v":{"$error":"#REF!"}},{"$f":"SUM(#REF!)","v":{"$error":"#REF!"}},{"$f":"SUM(#REF!)","v":{"$error":"#REF!"}},{"$f":"SUM(#REF!)","v":{"$error":"#REF!"}},{"$f":"SUM(#REF!)","v":{"$error":"#REF!"}},{"$f":"SUM(#REF!)","v":{"$error":"#REF!"}},{"$f":"SUM(#REF!)","v":{"$error":"#REF!"}},{"$f":"SUM(#REF!)","v":{"$error":"#REF!"}},{"$f":"SUM(#REF!)","v":{"$error":"#REF!"}},{"$f":"SUM(#REF!)","v":{"$error":"#REF!"}},{"$f":"SUM(#REF!)","v":{"$error":"#REF!"}},{"$f":"SUM(#REF!)","v":{"$error":"#REF!"}},{"$f":"SUM(#REF!)","v":{"$error":"#REF!"}},{"$f":"SUM(#REF!)","v":{"$error":"#REF!"}},{"$f":"SUM(#REF!)","v":{"$error":"#REF!"}},{"$f":"SUM(#REF!)","v":{"$error":"#REF!"}},{"$f":"SUM(#REF!)","v":{"$error":"#REF!"}},{"$f":"SUM(#REF!)","v":{"$error":"#REF!"}},{"$f":"SUM(#REF!)","v":{"$error":"#REF!"}},{"$f":"SUM(#REF!)","v":{"$error":"#REF!"}},{"$f":"SUM(#REF!)","v":{"$error":"#REF!"}},{"$f":"SUM(#REF!)","v":{"$error":"#REF!"}},{"$f":"SUM(#REF!)","v":{"$error":"#REF!"}},{"$f":"SUM(#REF!)","v":{"$error":"#REF!"}},{"$f":"SUM(#REF!)","v":{"$error":"#REF!"}},{"$f":"SUM(#REF!)","v":{"$error":"#REF!"}},{"$f":"SUM(#REF!)","v":{"$error":"#REF!"}},{"$f":"SUM(#REF!)","v":{"$error":"#REF!"}},{"$f":"SUM(#REF!)","v":{"$error":"#REF!"}},{"$f":"SUM(#REF!)","v":{"$error":"#REF!"}},{"$f":"SUM(#REF!)","v":{"$error":"#REF!"}},{"$f":"SUM(#REF!)","v":{"$error":"#REF!"}},{"$f":"SUM(#REF!)","v":{"$error":"#REF!"}},{"$f":"SUM(#REF!)","v":{"$error":"#REF!"}},{"$f":"SUM(#REF!)","v":{"$error":"#REF!"}},{"$f":"SUM(#REF!)","v":{"$error":"#REF!"}},{"$f":"SUM(#REF!)","v":{"$error":"#REF!"}},{"$f":"SUM(#REF!)","v":{"$error":"#REF!"}},{"$f":"SUM(#REF!)","v":{"$error":"#REF!"}},{"$f":"SUM(#REF!)","v":{"$error":"#REF!"}},{"$f":"SUM(#REF!)","v":{"$error":"#REF!"}},{"$f":"SUM(#REF!)","v":{"$error":"#REF!"}},{"$f":"SUM(#REF!)","v":{"$error":"#REF!"}},{"$f":"SUM(#REF!)","v":{"$error":"#REF!"}},{"$f":"SUM(#REF!)","v":{"$error":"#REF!"}},{"$f":"SUM(#REF!)","v":{"$error":"#REF!"}},{"$f":"SUM(#REF!)","v":{"$error":"#REF!"}},{"$f":"SUM(#REF!)","v":{"$error":"#REF!"}},{"$f":"SUM(#REF!)","v":{"$error":"#REF!"}},{"$f":"SUM(#REF!)","v":{"$error":"#REF!"}},{"$f":"SUM(#REF!)","v":{"$error":"#REF!"}},{"$f":"SUM(#REF!)","v":{"$error":"#REF!"}},{"$f":"SUM(#REF!)","v":{"$error":"#REF!"}},{"$f":"SUM(#REF!)","v":{"$error":"#REF!"}},{"$f":"SUM(#REF!)","v":{"$error":"#REF!"}},{"$f":"SUM(#REF!)","v":{"$error":"#REF!"}},{"$f":"SUM(#REF!)","v":{"$error":"#REF!"}},{"$f":"SUM(#REF!)","v":{"$error":"#REF!"}},{"$f":"SUM(#REF!)","v":{"$error":"#REF!"}},{"$f":"SUM(#REF!)","v":{"$error":"#REF!"}},{"$f":"SUM(#REF!)","v":{"$error":"#REF!"}},{"$f":"SUM(#REF!)","v":{"$error":"#REF!"}},{"$f":"SUM(#REF!)","v":{"$error":"#REF!"}},{"$f":"SUM(#REF!)","v":{"$error":"#REF!"}},{"$f":"SUM(#REF!)","v":{"$error":"#REF!"}},{"$f":"SUM(#REF!)","v":{"$error":"#REF!"}},{"$f":"SUM(#REF!)","v":{"$error":"#REF!"}},{"$f":"SUM(#REF!)","v":{"$error":"#REF!"}},{"$f":"SUM(#REF!)","v":{"$error":"#REF!"}},{"$f":"SUM(#REF!)","v":{"$error":"#REF!"}},{"$f":"SUM(#REF!)","v":{"$error":"#REF!"}},{"$f":"SUM(#REF!)","v":{"$error":"#REF!"}},{"$f":"SUM(#REF!)","v":{"$error":"#REF!"}},{"$f":"SUM(#REF!)","v":{"$error":"#REF!"}},{"$f":"SUM(#REF!)","v":{"$error":"#REF!"}},{"$f":"SUM(#REF!)","v":{"$error":"#REF!"}},{"$f":"SUM(#REF!)","v":{"$error":"#REF!"}},{"$f":"SUM(#REF!)","v":{"$error":"#REF!"}},{"$f":"SUM(#REF!)","v":{"$error":"#REF!"}},{"$f":"SUM(#REF!)","v":{"$error":"#REF!"}},{"$f":"SUM(#REF!)","v":{"$error":"#REF!"}},{"$f":"SUM(#REF!)","v":{"$error":"#REF!"}},{"$f":"SUM(#REF!)","v":{"$error":"#REF!"}},{"$f":"SUM(#REF!)","v":{"$error":"#REF!"}},{"$f":"SUM(#REF!)","v":{"$error":"#REF!"}},{"$f":"SUM(#REF!)","v":{"$error":"#REF!"}},{"$f":"SUM(#REF!)","v":{"$error":"#REF!"}},{"$f":"SUM(#REF!)","v":{"$error":"#REF!"}},{"$f":"SUM(#REF!)","v":{"$error":"#REF!"}},{"$f":"SUM(#REF!)","v":{"$error":"#REF!"}},{"$f":"SUM(#REF!)","v":{"$error":"#REF!"}},{"$f":"SUM(#REF!)","v":{"$error":"#REF!"}},{"$f":"SUM(#REF!)","v":{"$error":"#REF!"}},{"$f":"SUM(#REF!)","v":{"$error":"#REF!"}},{"$f":"SUM(#REF!)","v":{"$error":"#REF!"}},{"$f":"SUM(#REF!)","v":{"$error":"#REF!"}},{"$f":"SUM(#REF!)","v":{"$error":"#REF!"}},{"$f":"SUM(#REF!)","v":{"$error":"#REF!"}},{"$f":"SUM(#REF!)","v":{"$error":"#REF!"}},{"$f":"SUM(#REF!)","v":{"$error":"#REF!"}},{"$f":"SUM(#REF!)","v":{"$error":"#REF!"}},{"$f":"SUM(#REF!)","v":{"$error":"#REF!"}},{"$f":"SUM(#REF!)","v":{"$error":"#REF!"}},{"$f":"SUM(#REF!)","v":{"$error":"#REF!"}},{"$f":"SUM(#REF!)","v":{"$error":"#REF!"}},{"$f":"SUM(#REF!)","v":{"$error":"#REF!"}},{"$f":"SUM(#REF!)","v":{"$error":"#REF!"}},{"$f":"SUM(#REF!)","v":{"$error":"#REF!"}},{"$f":"SUM(#REF!)","v":{"$error":"#REF!"}},{"$f":"SUM(#REF!)","v":{"$error":"#REF!"}},{"$f":"SUM(#REF!)","v":{"$error":"#REF!"}},{"$f":"SUM(#REF!)","v":{"$error":"#REF!"}},{"$f":"SUM(#REF!)","v":{"$error":"#REF!"}},{"$f":"SUM(#REF!)","v":{"$error":"#REF!"}},{"$f":"SUM(#REF!)","v":{"$error":"#REF!"}},{"$f":"SUM(#REF!)","v":{"$error":"#REF!"}},{"$f":"SUM(#REF!)","v":{"$error":"#REF!"}},{"$f":"SUM(#REF!)","v":{"$error":"#REF!"}},{"$f":"SUM(#REF!)","v":{"$error":"#REF!"}},{"$f":"SUM(#REF!)","v":{"$error":"#REF!"}},{"$f":"SUM(#REF!)","v":{"$error":"#REF!"}},{"$f":"SUM(#REF!)","v":{"$error":"#REF!"}},{"$f":"SUM(#REF!)","v":{"$error":"#REF!"}},{"$f":"SUM(#REF!)","v":{"$error":"#REF!"}},{"$f":"SUM(#REF!)","v":{"$error":"#REF!"}},{"$f":"SUM(#REF!)","v":{"$error":"#REF!"}},{"$f":"SUM(#REF!)","v":{"$error":"#REF!"}},{"$f":"SUM(#REF!)","v":{"$error":"#REF!"}},{"$f":"SUM(#REF!)","v":{"$error":"#REF!"}},{"$f":"SUM(#REF!)","v":{"$error":"#REF!"}},{"$f":"SUM(#REF!)","v":{"$error":"#REF!"}},{"$f":"SUM(#REF!)","v":{"$error":"#REF!"}},{"$f":"SUM(#REF!)","v":{"$error":"#REF!"}},{"$f":"SUM(#REF!)","v":{"$error":"#REF!"}},{"$f":"SUM(#REF!)","v":{"$error":"#REF!"}},{"$f":"SUM(#REF!)","v":{"$error":"#REF!"}},{"$f":"SUM(#REF!)","v":{"$error":"#REF!"}},{"$f":"SUM(#REF!)","v":{"$error":"#REF!"}},{"$f":"SUM(#REF!)","v":{"$error":"#REF!"}},{"$f":"SUM(#REF!)","v":{"$error":"#REF!"}},{"$f":"SUM(#REF!)","v":{"$error":"#REF!"}},{"$f":"SUM(#REF!)","v":{"$error":"#REF!"}},{"$f":"SUM(#REF!)","v":{"$error":"#REF!"}},{"$f":"SUM(#REF!)","v":{"$error":"#REF!"}},{"$f":"SUM(#REF!)","v":{"$error":"#REF!"}},{"$f":"SUM(#REF!)","v":{"$error":"#REF!"}},{"$f":"SUM(#REF!)","v":{"$error":"#REF!"}},{"$f":"SUM(#REF!)","v":{"$error":"#REF!"}},{"$f":"SUM(#REF!)","v":{"$error":"#REF!"}},{"$f":"SUM(#REF!)","v":{"$error":"#REF!"}},{"$f":"SUM(#REF!)","v":{"$error":"#REF!"}},{"$f":"SUM(#REF!)","v":{"$error":"#REF!"}},{"$f":"SUM(#REF!)","v":{"$error":"#REF!"}},{"$f":"SUM(#REF!)","v":{"$error":"#REF!"}},{"$f":"SUM(#REF!)","v":{"$error":"#REF!"}},{"$f":"SUM(#REF!)","v":{"$error":"#REF!"}},{"$f":"SUM(#REF!)","v":{"$error":"#REF!"}},{"$f":"SUM(#REF!)","v":{"$error":"#REF!"}},{"$f":"SUM(#REF!)","v":{"$error":"#REF!"}},{"$f":"SUM(#REF!)","v":{"$error":"#REF!"}},{"$f":"SUM(#REF!)","v":{"$error":"#REF!"}},{"$f":"SUM(#REF!)","v":{"$error":"#REF!"}},{"$f":"SUM(#REF!)","v":{"$error":"#REF!"}},{"$f":"SUM(#REF!)","v":{"$error":"#REF!"}},{"$f":"SUM(#REF!)","v":{"$error":"#REF!"}},{"$f":"SUM(#REF!)","v":{"$error":"#REF!"}},{"$f":"SUM(#REF!)","v":{"$error":"#REF!"}},{"$f":"SUM(#REF!)","v":{"$error":"#REF!"}},{"$f":"SUM(#REF!)","v":{"$error":"#REF!"}},{"$f":"SUM(#REF!)","v":{"$error":"#REF!"}},{"$f":"SUM(#REF!)","v":{"$error":"#REF!"}},{"$f":"SUM(#REF!)","v":{"$error":"#REF!"}},{"$f":"SUM(#REF!)","v":{"$error":"#REF!"}},{"$f":"SUM(#REF!)","v":{"$error":"#REF!"}},{"$f":"SUM(#REF!)","v":{"$error":"#REF!"}},{"$f":"SUM(#REF!)","v":{"$error":"#REF!"}},{"$f":"SUM(#REF!)","v":{"$error":"#REF!"}},{"$f":"SUM(#REF!)","v":{"$error":"#REF!"}},{"$f":"SUM(#REF!)","v":{"$error":"#REF!"}},{"$f":"SUM(#REF!)","v":{"$error":"#REF!"}},{"$f":"SUM(#REF!)","v":{"$error":"#REF!"}},{"$f":"SUM(#REF!)","v":{"$error":"#REF!"}},{"$f":"SUM(#REF!)","v":{"$error":"#REF!"}},{"$f":"SUM(#REF!)","v":{"$error":"#REF!"}},{"$f":"SUM(#REF!)","v":{"$error":"#REF!"}},{"$f":"SUM(#REF!)","v":{"$error":"#REF!"}},{"$f":"SUM(#REF!)","v":{"$error":"#REF!"}},{"$f":"SUM(#REF!)","v":{"$error":"#REF!"}},{"$f":"SUM(#REF!)","v":{"$error":"#REF!"}},{"$f":"SUM(#REF!)","v":{"$error":"#REF!"}},{"$f":"SUM(#REF!)","v":{"$error":"#REF!"}},{"$f":"SUM(#REF!)","v":{"$error":"#REF!"}},{"$f":"SUM(#REF!)","v":{"$error":"#REF!"}},{"$f":"SUM(#REF!)","v":{"$error":"#REF!"}},{"$f":"SUM(#REF!)","v":{"$error":"#REF!"}},{"$f":"SUM(#REF!)","v":{"$error":"#REF!"}},{"$f":"SUM(#REF!)","v":{"$error":"#REF!"}},{"$f":"SUM(#REF!)","v":{"$error":"#REF!"}},{"$f":"SUM(#REF!)","v":{"$error":"#REF!"}},{"$f":"SUM(#REF!)","v":{"$error":"#REF!"}},{"$f":"SUM(#REF!)","v":{"$error":"#REF!"}},{"$f":"SUM(#REF!)","v":{"$error":"#REF!"}},{"$f":"SUM(#REF!)","v":{"$error":"#REF!"}},{"$f":"SUM(#REF!)","v":{"$error":"#REF!"}},{"$f":"SUM(#REF!)","v":{"$error":"#REF!"}},{"$f":"SUM(#REF!)","v":{"$error":"#REF!"}},{"$f":"SUM(#REF!)","v":{"$error":"#REF!"}},{"$f":"SUM(#REF!)","v":{"$error":"#REF!"}},{"$f":"SUM(#REF!)","v":{"$error":"#REF!"}},{"$f":"SUM(#REF!)","v":{"$error":"#REF!"}},{"$f":"SUM(#REF!)","v":{"$error":"#REF!"}},{"$f":"SUM(#REF!)","v":{"$error":"#REF!"}},{"$f":"SUM(#REF!)","v":{"$error":"#REF!"}},{"$f":"SUM(#REF!)","v":{"$error":"#REF!"}},{"$f":"SUM(#REF!)","v":{"$error":"#REF!"}},{"$f":"SUM(#REF!)","v":{"$error":"#REF!"}},{"$f":"SUM(#REF!)","v":{"$error":"#REF!"}},{"$f":"SUM(#REF!)","v":{"$error":"#REF!"}},{"$f":"SUM(#REF!)","v":{"$error":"#REF!"}},{"$f":"SUM(#REF!)","v":{"$error":"#REF!"}},{"$f":"SUM(#REF!)","v":{"$error":"#REF!"}},{"$f":"SUM(#REF!)","v":{"$error":"#REF!"}},{"$f":"SUM(#REF!)","v":{"$error":"#REF!"}},{"$f":"SUM(#REF!)","v":{"$error":"#REF!"}},{"$f":"SUM(#REF!)","v":{"$error":"#REF!"}},{"$f":"SUM(#REF!)","v":{"$error":"#REF!"}},{"$f":"SUM(#REF!)","v":{"$error":"#REF!"}},{"$f":"SUM(#REF!)","v":{"$error":"#REF!"}},{"$f":"SUM(#REF!)","v":{"$error":"#REF!"}},{"$f":"SUM(#REF!)","v":{"$error":"#REF!"}},{"$f":"SUM(#REF!)","v":{"$error":"#REF!"}},{"$f":"SUM(#REF!)","v":{"$error":"#REF!"}},{"$f":"SUM(#REF!)","v":{"$error":"#REF!"}},{"$f":"SUM(#REF!)","v":{"$error":"#REF!"}},{"$f":"SUM(#REF!)","v":{"$error":"#REF!"}},{"$f":"SUM(#REF!)","v":{"$error":"#REF!"}},{"$f":"SUM(#REF!)","v":{"$error":"#REF!"}},{"$f":"SUM(#REF!)","v":{"$error":"#REF!"}},{"$f":"SUM(#REF!)","v":{"$error":"#REF!"}},{"$f":"SUM(#REF!)","v":{"$error":"#REF!"}},{"$f":"SUM(#REF!)","v":{"$error":"#REF!"}},{"$f":"SUM(#REF!)","v":{"$error":"#REF!"}},{"$f":"SUM(#REF!)","v":{"$error":"#REF!"}},{"$f":"SUM(#REF!)","v":{"$error":"#REF!"}},{"$f":"SUM(#REF!)","v":{"$error":"#REF!"}},{"$f":"SUM(#REF!)","v":{"$error":"#REF!"}},{"$f":"SUM(#REF!)","v":{"$error":"#REF!"}},{"$f":"SUM(#REF!)","v":{"$error":"#REF!"}},{"$f":"SUM(#REF!)","v":{"$error":"#REF!"}},{"$f":"SUM(#REF!)","v":{"$error":"#REF!"}},{"$f":"SUM(#REF!)","v":{"$error":"#REF!"}},{"$f":"SUM(#REF!)","v":{"$error":"#REF!"}},{"$f":"SUM(#REF!)","v":{"$error":"#REF!"}},{"$f":"SUM(#REF!)","v":{"$error":"#REF!"}},{"$f":"SUM(#REF!)","v":{"$error":"#REF!"}},{"$f":"SUM(#REF!)","v":{"$error":"#REF!"}},{"$f":"SUM(#REF!)","v":{"$error":"#REF!"}},{"$f":"SUM(#REF!)","v":{"$error":"#REF!"}},{"$f":"SUM(#REF!)","v":{"$error":"#REF!"}},{"$f":"SUM(#REF!)","v":{"$error":"#REF!"}},{"$f":"SUM(#REF!)","v":{"$error":"#REF!"}},{"$f":"SUM(#REF!)","v":{"$error":"#REF!"}},{"$f":"SUM(#REF!)","v":{"$error":"#REF!"}},{"$f":"SUM(#REF!)","v":{"$error":"#REF!"}},{"$f":"SUM(#REF!)","v":{"$error":"#REF!"}},{"$f":"SUM(#REF!)","v":{"$error":"#REF!"}},{"$f":"SUM(#REF!)","v":{"$error":"#REF!"}},{"$f":"SUM(#REF!)","v":{"$error":"#REF!"}},{"$f":"SUM(#REF!)","v":{"$error":"#REF!"}},{"$f":"SUM(#REF!)","v":{"$error":"#REF!"}},{"$f":"SUM(#REF!)","v":{"$error":"#REF!"}},{"$f":"SUM(#REF!)","v":{"$error":"#REF!"}},{"$f":"SUM(#REF!)","v":{"$error":"#REF!"}},{"$f":"SUM(#REF!)","v":{"$error":"#REF!"}},{"$f":"SUM(#REF!)","v":{"$error":"#REF!"}},{"$f":"SUM(#REF!)","v":{"$error":"#REF!"}},{"$f":"SUM(#REF!)","v":{"$error":"#REF!"}},{"$f":"SUM(#REF!)","v":{"$error":"#REF!"}},{"$f":"SUM(#REF!)","v":{"$error":"#REF!"}},{"$f":"SUM(#REF!)","v":{"$error":"#REF!"}},{"$f":"SUM(#REF!)","v":{"$error":"#REF!"}},{"$f":"SUM(#REF!)","v":{"$error":"#REF!"}},{"$f":"SUM(#REF!)","v":{"$error":"#REF!"}},{"$f":"SUM(#REF!)","v":{"$error":"#REF!"}},{"$f":"SUM(#REF!)","v":{"$error":"#REF!"}},{"$f":"SUM(#REF!)","v":{"$error":"#REF!"}},{"$f":"SUM(#REF!)","v":{"$error":"#REF!"}},{"$f":"SUM(#REF!)","v":{"$error":"#REF!"}},{"$f":"SUM(#REF!)","v":{"$error":"#REF!"}},{"$f":"SUM(#REF!)","v":{"$error":"#REF!"}},{"$f":"SUM(#REF!)","v":{"$error":"#REF!"}},{"$f":"SUM(#REF!)","v":{"$error":"#REF!"}},{"$f":"SUM(#REF!)","v":{"$error":"#REF!"}},{"$f":"SUM(#REF!)","v":{"$error":"#REF!"}},{"$f":"SUM(#REF!)","v":{"$error":"#REF!"}},{"$f":"SUM(#REF!)","v":{"$error":"#REF!"}},{"$f":"SUM(#REF!)","v":{"$error":"#REF!"}},{"$f":"SUM(#REF!)","v":{"$error":"#REF!"}},{"$f":"SUM(#REF!)","v":{"$error":"#REF!"}},{"$f":"SUM(#REF!)","v":{"$error":"#REF!"}},{"$f":"SUM(#REF!)","v":{"$error":"#REF!"}},{"$f":"SUM(#REF!)","v":{"$error":"#REF!"}},{"$f":"SUM(#REF!)","v":{"$error":"#REF!"}},{"$f":"SUM(#REF!)","v":{"$error":"#REF!"}},{"$f":"SUM(#REF!)","v":{"$error":"#REF!"}},{"$f":"SUM(#REF!)","v":{"$error":"#REF!"}},{"$f":"SUM(#REF!)","v":{"$error":"#REF!"}},{"$f":"SUM(#REF!)","v":{"$error":"#REF!"}},{"$f":"SUM(#REF!)","v":{"$error":"#REF!"}},{"$f":"SUM(#REF!)","v":{"$error":"#REF!"}},{"$f":"SUM(#REF!)","v":{"$error":"#REF!"}},{"$f":"SUM(#REF!)","v":{"$error":"#REF!"}},{"$f":"SUM(#REF!)","v":{"$error":"#REF!"}},{"$f":"SUM(#REF!)","v":{"$error":"#REF!"}},{"$f":"SUM(#REF!)","v":{"$error":"#REF!"}},{"$f":"SUM(#REF!)","v":{"$error":"#REF!"}},{"$f":"SUM(#REF!)","v":{"$error":"#REF!"}},{"$f":"SUM(#REF!)","v":{"$error":"#REF!"}},{"$f":"SUM(#REF!)","v":{"$error":"#REF!"}},{"$f":"SUM(#REF!)","v":{"$error":"#REF!"}},{"$f":"SUM(#REF!)","v":{"$error":"#REF!"}},{"$f":"SUM(#REF!)","v":{"$error":"#REF!"}},{"$f":"SUM(#REF!)","v":{"$error":"#REF!"}},{"$f":"SUM(#REF!)","v":{"$error":"#REF!"}},{"$f":"SUM(#REF!)","v":{"$error":"#REF!"}},{"$f":"SUM(#REF!)","v":{"$error":"#REF!"}},{"$f":"SUM(#REF!)","v":{"$error":"#REF!"}},{"$f":"SUM(#REF!)","v":{"$error":"#REF!"}},{"$f":"SUM(#REF!)","v":{"$error":"#REF!"}},{"$f":"SUM(#REF!)","v":{"$error":"#REF!"}},{"$f":"SUM(#REF!)","v":{"$error":"#REF!"}},{"$f":"SUM(#REF!)","v":{"$error":"#REF!"}},{"$f":"SUM(#REF!)","v":{"$error":"#REF!"}},{"$f":"SUM(#REF!)","v":{"$error":"#REF!"}},{"$f":"SUM(#REF!)","v":{"$error":"#REF!"}},{"$f":"SUM(#REF!)","v":{"$error":"#REF!"}},{"$f":"SUM(#REF!)","v":{"$error":"#REF!"}},{"$f":"SUM(#REF!)","v":{"$error":"#REF!"}},{"$f":"SUM(#REF!)","v":{"$error":"#REF!"}},{"$f":"SUM(#REF!)","v":{"$error":"#REF!"}},{"$f":"SUM(#REF!)","v":{"$error":"#REF!"}},{"$f":"SUM(#REF!)","v":{"$error":"#REF!"}},{"$f":"SUM(#REF!)","v":{"$error":"#REF!"}},{"$f":"SUM(#REF!)","v":{"$error":"#REF!"}},{"$f":"SUM(#REF!)","v":{"$error":"#REF!"}},{"$f":"SUM(#REF!)","v":{"$error":"#REF!"}},{"$f":"SUM(#REF!)","v":{"$error":"#REF!"}},{"$f":"SUM(#REF!)","v":{"$error":"#REF!"}},{"$f":"SUM(#REF!)","v":{"$error":"#REF!"}},{"$f":"SUM(#REF!)","v":{"$error":"#REF!"}},{"$f":"SUM(#REF!)","v":{"$error":"#REF!"}},{"$f":"SUM(#REF!)","v":{"$error":"#REF!"}},{"$f":"SUM(#REF!)","v":{"$error":"#REF!"}},{"$f":"SUM(#REF!)","v":{"$error":"#REF!"}},{"$f":"SUM(#REF!)","v":{"$error":"#REF!"}},{"$f":"SUM(#REF!)","v":{"$error":"#REF!"}},{"$f":"SUM(#REF!)","v":{"$error":"#REF!"}},{"$f":"SUM(#REF!)","v":{"$error":"#REF!"}},{"$f":"SUM(#REF!)","v":{"$error":"#REF!"}},{"$f":"SUM(#REF!)","v":{"$error":"#REF!"}},{"$f":"SUM(#REF!)","v":{"$error":"#REF!"}},{"$f":"SUM(#REF!)","v":{"$error":"#REF!"}},{"$f":"SUM(#REF!)","v":{"$error":"#REF!"}},{"$f":"SUM(#REF!)","v":{"$error":"#REF!"}},{"$f":"SUM(#REF!)","v":{"$error":"#REF!"}},{"$f":"SUM(#REF!)","v":{"$error":"#REF!"}},{"$f":"SUM(#REF!)","v":{"$error":"#REF!"}},{"$f":"SUM(#REF!)","v":{"$error":"#REF!"}},{"$f":"SUM(#REF!)","v":{"$error":"#REF!"}},{"$f":"SUM(#REF!)","v":{"$error":"#REF!"}},{"$f":"SUM(#REF!)","v":{"$error":"#REF!"}},{"$f":"SUM(#REF!)","v":{"$error":"#REF!"}},{"$f":"SUM(#REF!)","v":{"$error":"#REF!"}},{"$f":"SUM(#REF!)","v":{"$error":"#REF!"}},{"$f":"SUM(#REF!)","v":{"$error":"#REF!"}},{"$f":"SUM(#REF!)","v":{"$error":"#REF!"}},{"$f":"SUM(#REF!)","v":{"$error":"#REF!"}},{"$f":"SUM(#REF!)","v":{"$error":"#REF!"}},{"$f":"SUM(#REF!)","v":{"$error":"#REF!"}},{"$f":"SUM(#REF!)","v":{"$error":"#REF!"}},{"$f":"SUM(#REF!)","v":{"$error":"#REF!"}},{"$f":"SUM(#REF!)","v":{"$error":"#REF!"}},{"$f":"SUM(#REF!)","v":{"$error":"#REF!"}},{"$f":"SUM(#REF!)","v":{"$error":"#REF!"}},{"$f":"SUM(#REF!)","v":{"$error":"#REF!"}},{"$f":"SUM(#REF!)","v":{"$error":"#REF!"}},{"$f":"SUM(#REF!)","v":{"$error":"#REF!"}},{"$f":"SUM(#REF!)","v":{"$error":"#REF!"}},{"$f":"SUM(#REF!)","v":{"$error":"#REF!"}},{"$f":"SUM(#REF!)","v":{"$error":"#REF!"}},{"$f":"SUM(#REF!)","v":{"$error":"#REF!"}},{"$f":"SUM(#REF!)","v":{"$error":"#REF!"}},{"$f":"SUM(#REF!)","v":{"$error":"#REF!"}},{"$f":"SUM(#REF!)","v":{"$error":"#REF!"}},{"$f":"SUM(#REF!)","v":{"$error":"#REF!"}},{"$f":"SUM(#REF!)","v":{"$error":"#REF!"}},{"$f":"SUM(#REF!)","v":{"$error":"#REF!"}},{"$f":"SUM(#REF!)","v":{"$error":"#REF!"}},{"$f":"SUM(#REF!)","v":{"$error":"#REF!"}},{"$f":"SUM(#REF!)","v":{"$error":"#REF!"}},{"$f":"SUM(#REF!)","v":{"$error":"#REF!"}},{"$f":"SUM(#REF!)","v":{"$error":"#REF!"}},{"$f":"SUM(#REF!)","v":{"$error":"#REF!"}},{"$f":"SUM(#REF!)","v":{"$error":"#REF!"}},{"$f":"SUM(#REF!)","v":{"$error":"#REF!"}},{"$f":"SUM(#REF!)","v":{"$error":"#REF!"}},{"$f":"SUM(#REF!)","v":{"$error":"#REF!"}},{"$f":"SUM(#REF!)","v":{"$error":"#REF!"}},{"$f":"SUM(#REF!)","v":{"$error":"#REF!"}},{"$f":"SUM(#REF!)","v":{"$error":"#REF!"}},{"$f":"SUM(#REF!)","v":{"$error":"#REF!"}},{"$f":"SUM(#REF!)","v":{"$error":"#REF!"}},{"$f":"SUM(#REF!)","v":{"$error":"#REF!"}},{"$f":"SUM(#REF!)","v":{"$error":"#REF!"}},{"$f":"SUM(#REF!)","v":{"$error":"#REF!"}},{"$f":"SUM(#REF!)","v":{"$error":"#REF!"}},{"$f":"SUM(#REF!)","v":{"$error":"#REF!"}},{"$f":"SUM(#REF!)","v":{"$error":"#REF!"}},{"$f":"SUM(#REF!)","v":{"$error":"#REF!"}},{"$f":"SUM(#REF!)","v":{"$error":"#REF!"}},{"$f":"SUM(#REF!)","v":{"$error":"#REF!"}},{"$f":"SUM(#REF!)","v":{"$error":"#REF!"}},{"$f":"SUM(#REF!)","v":{"$error":"#REF!"}},{"$f":"SUM(#REF!)","v":{"$error":"#REF!"}},{"$f":"SUM(#REF!)","v":{"$error":"#REF!"}},{"$f":"SUM(#REF!)","v":{"$error":"#REF!"}},{"$f":"SUM(#REF!)","v":{"$error":"#REF!"}},{"$f":"SUM(#REF!)","v":{"$error":"#REF!"}},{"$f":"SUM(#REF!)","v":{"$error":"#REF!"}},{"$f":"SUM(#REF!)","v":{"$error":"#REF!"}},{"$f":"SUM(#REF!)","v":{"$error":"#REF!"}},{"$f":"SUM(#REF!)","v":{"$error":"#REF!"}},{"$f":"SUM(#REF!)","v":{"$error":"#REF!"}},{"$f":"SUM(#REF!)","v":{"$error":"#REF!"}},{"$f":"SUM(#REF!)","v":{"$error":"#REF!"}},{"$f":"SUM(#REF!)","v":{"$error":"#REF!"}},{"$f":"SUM(#REF!)","v":{"$error":"#REF!"}},{"$f":"SUM(#REF!)","v":{"$error":"#REF!"}},{"$f":"SUM(#REF!)","v":{"$error":"#REF!"}},{"$f":"SUM(#REF!)","v":{"$error":"#REF!"}},{"$f":"SUM(#REF!)","v":{"$error":"#REF!"}},{"$f":"SUM(#REF!)","v":{"$error":"#REF!"}},{"$f":"SUM(#REF!)","v":{"$error":"#REF!"}},{"$f":"SUM(#REF!)","v":{"$error":"#REF!"}},{"$f":"SUM(#REF!)","v":{"$error":"#REF!"}},{"$f":"SUM(#REF!)","v":{"$error":"#REF!"}},{"$f":"SUM(#REF!)","v":{"$error":"#REF!"}},{"$f":"SUM(#REF!)","v":{"$error":"#REF!"}},{"$f":"SUM(#REF!)","v":{"$error":"#REF!"}},{"$f":"SUM(#REF!)","v":{"$error":"#REF!"}},{"$f":"SUM(#REF!)","v":{"$error":"#REF!"}},{"$f":"SUM(#REF!)","v":{"$error":"#REF!"}},{"$f":"SUM(#REF!)","v":{"$error":"#REF!"}},{"$f":"SUM(#REF!)","v":{"$error":"#REF!"}},{"$f":"SUM(#REF!)","v":{"$error":"#REF!"}},{"$f":"SUM(#REF!)","v":{"$error":"#REF!"}},{"$f":"SUM(#REF!)","v":{"$error":"#REF!"}},{"$f":"SUM(#REF!)","v":{"$error":"#REF!"}},{"$f":"SUM(#REF!)","v":{"$error":"#REF!"}},{"$f":"SUM(#REF!)","v":{"$error":"#REF!"}},{"$f":"SUM(#REF!)","v":{"$error":"#REF!"}},{"$f":"SUM(#REF!)","v":{"$error":"#REF!"}},{"$f":"SUM(#REF!)","v":{"$error":"#REF!"}},{"$f":"SUM(#REF!)","v":{"$error":"#REF!"}},{"$f":"SUM(#REF!)","v":{"$error":"#REF!"}},{"$f":"SUM(#REF!)","v":{"$error":"#REF!"}},{"$f":"SUM(#REF!)","v":{"$error":"#REF!"}},{"$f":"SUM(#REF!)","v":{"$error":"#REF!"}},{"$f":"SUM(#REF!)","v":{"$error":"#REF!"}},{"$f":"SUM(#REF!)","v":{"$error":"#REF!"}},{"$f":"SUM(#REF!)","v":{"$error":"#REF!"}},{"$f":"SUM(#REF!)","v":{"$error":"#REF!"}},{"$f":"SUM(#REF!)","v":{"$error":"#REF!"}},{"$f":"SUM(#REF!)","v":{"$error":"#REF!"}},{"$f":"SUM(#REF!)","v":{"$error":"#REF!"}},{"$f":"SUM(#REF!)","v":{"$error":"#REF!"}},{"$f":"SUM(#REF!)","v":{"$error":"#REF!"}},{"$f":"SUM(#REF!)","v":{"$error":"#REF!"}},{"$f":"SUM(#REF!)","v":{"$error":"#REF!"}},{"$f":"SUM(#REF!)","v":{"$error":"#REF!"}},{"$f":"SUM(#REF!)","v":{"$error":"#REF!"}},{"$f":"SUM(#REF!)","v":{"$error":"#REF!"}},{"$f":"SUM(#REF!)","v":{"$error":"#REF!"}},{"$f":"SUM(#REF!)","v":{"$error":"#REF!"}},{"$f":"SUM(#REF!)","v":{"$error":"#REF!"}},{"$f":"SUM(#REF!)","v":{"$error":"#REF!"}},{"$f":"SUM(#REF!)","v":{"$error":"#REF!"}},{"$f":"SUM(#REF!)","v":{"$error":"#REF!"}},{"$f":"SUM(#REF!)","v":{"$error":"#REF!"}},{"$f":"SUM(#REF!)","v":{"$error":"#REF!"}},{"$f":"SUM(#REF!)","v":{"$error":"#REF!"}},{"$f":"SUM(#REF!)","v":{"$error":"#REF!"}},{"$f":"SUM(#REF!)","v":{"$error":"#REF!"}},{"$f":"SUM(#REF!)","v":{"$error":"#REF!"}},{"$f":"SUM(#REF!)","v":{"$error":"#REF!"}},{"$f":"SUM(#REF!)","v":{"$error":"#REF!"}},{"$f":"SUM(#REF!)","v":{"$error":"#REF!"}},{"$f":"SUM(#REF!)","v":{"$error":"#REF!"}},{"$f":"SUM(#REF!)","v":{"$error":"#REF!"}},{"$f":"SUM(#REF!)","v":{"$error":"#REF!"}},{"$f":"SUM(#REF!)","v":{"$error":"#REF!"}},{"$f":"SUM(#REF!)","v":{"$error":"#REF!"}},{"$f":"SUM(#REF!)","v":{"$error":"#REF!"}},{"$f":"SUM(#REF!)","v":{"$error":"#REF!"}},{"$f":"SUM(#REF!)","v":{"$error":"#REF!"}},{"$f":"SUM(#REF!)","v":{"$error":"#REF!"}},{"$f":"SUM(#REF!)","v":{"$error":"#REF!"}},{"$f":"SUM(#REF!)","v":{"$error":"#REF!"}},{"$f":"SUM(#REF!)","v":{"$error":"#REF!"}},{"$f":"SUM(#REF!)","v":{"$error":"#REF!"}},{"$f":"SUM(#REF!)","v":{"$error":"#REF!"}},{"$f":"SUM(#REF!)","v":{"$error":"#REF!"}},{"$f":"SUM(#REF!)","v":{"$error":"#REF!"}},{"$f":"SUM(#REF!)","v":{"$error":"#REF!"}},{"$f":"SUM(#REF!)","v":{"$error":"#REF!"}},{"$f":"SUM(#REF!)","v":{"$error":"#REF!"}},{"$f":"SUM(#REF!)","v":{"$error":"#REF!"}},{"$f":"SUM(#REF!)","v":{"$error":"#REF!"}},{"$f":"SUM(#REF!)","v":{"$error":"#REF!"}},{"$f":"SUM(#REF!)","v":{"$error":"#REF!"}},{"$f":"SUM(#REF!)","v":{"$error":"#REF!"}},{"$f":"SUM(#REF!)","v":{"$error":"#REF!"}},{"$f":"SUM(#REF!)","v":{"$error":"#REF!"}},{"$f":"SUM(#REF!)","v":{"$error":"#REF!"}},{"$f":"SUM(#REF!)","v":{"$error":"#REF!"}},{"$f":"SUM(#REF!)","v":{"$error":"#REF!"}},{"$f":"SUM(#REF!)","v":{"$error":"#REF!"}},{"$f":"SUM(#REF!)","v":{"$error":"#REF!"}},{"$f":"SUM(#REF!)","v":{"$error":"#REF!"}},{"$f":"SUM(#REF!)","v":{"$error":"#REF!"}},{"$f":"SUM(#REF!)","v":{"$error":"#REF!"}},{"$f":"SUM(#REF!)","v":{"$error":"#REF!"}},{"$f":"SUM(#REF!)","v":{"$error":"#REF!"}},{"$f":"SUM(#REF!)","v":{"$error":"#REF!"}},{"$f":"SUM(#REF!)","v":{"$error":"#REF!"}},{"$f":"SUM(#REF!)","v":{"$error":"#REF!"}},{"$f":"SUM(#REF!)","v":{"$error":"#REF!"}},{"$f":"SUM(#REF!)","v":{"$error":"#REF!"}},{"$f":"SUM(#REF!)","v":{"$error":"#REF!"}},{"$f":"SUM(#REF!)","v":{"$error":"#REF!"}},{"$f":"SUM(#REF!)","v":{"$error":"#REF!"}},{"$f":"SUM(#REF!)","v":{"$error":"#REF!"}},{"$f":"SUM(#REF!)","v":{"$error":"#REF!"}},{"$f":"SUM(#REF!)","v":{"$error":"#REF!"}},{"$f":"SUM(#REF!)","v":{"$error":"#REF!"}},{"$f":"SUM(#REF!)","v":{"$error":"#REF!"}},{"$f":"SUM(#REF!)","v":{"$error":"#REF!"}},{"$f":"SUM(#REF!)","v":{"$error":"#REF!"}},{"$f":"SUM(#REF!)","v":{"$error":"#REF!"}},{"$f":"SUM(#REF!)","v":{"$error":"#REF!"}},{"$f":"SUM(#REF!)","v":{"$error":"#REF!"}},{"$f":"SUM(#REF!)","v":{"$error":"#REF!"}},{"$f":"SUM(#REF!)","v":{"$error":"#REF!"}},{"$f":"SUM(#REF!)","v":{"$error":"#REF!"}},{"$f":"SUM(#REF!)","v":{"$error":"#REF!"}},{"$f":"SUM(#REF!)","v":{"$error":"#REF!"}},{"$f":"SUM(#REF!)","v":{"$error":"#REF!"}},{"$f":"SUM(#REF!)","v":{"$error":"#REF!"}},{"$f":"SUM(#REF!)","v":{"$error":"#REF!"}},{"$f":"SUM(#REF!)","v":{"$error":"#REF!"}},{"$f":"SUM(#REF!)","v":{"$error":"#REF!"}},{"$f":"SUM(#REF!)","v":{"$error":"#REF!"}},{"$f":"SUM(#REF!)","v":{"$error":"#REF!"}},{"$f":"SUM(#REF!)","v":{"$error":"#REF!"}},{"$f":"SUM(#REF!)","v":{"$error":"#REF!"}},{"$f":"SUM(#REF!)","v":{"$error":"#REF!"}},{"$f":"SUM(#REF!)","v":{"$error":"#REF!"}},{"$f":"SUM(#REF!)","v":{"$error":"#REF!"}},{"$f":"SUM(#REF!)","v":{"$error":"#REF!"}},{"$f":"SUM(#REF!)","v":{"$error":"#REF!"}},{"$f":"SUM(#REF!)","v":{"$error":"#REF!"}},{"$f":"SUM(#REF!)","v":{"$error":"#REF!"}},{"$f":"SUM(#REF!)","v":{"$error":"#REF!"}},{"$f":"SUM(#REF!)","v":{"$error":"#REF!"}},{"$f":"SUM(#REF!)","v":{"$error":"#REF!"}},{"$f":"SUM(#REF!)","v":{"$error":"#REF!"}},{"$f":"SUM(#REF!)","v":{"$error":"#REF!"}},{"$f":"SUM(#REF!)","v":{"$error":"#REF!"}},{"$f":"SUM(#REF!)","v":{"$error":"#REF!"}},{"$f":"SUM(#REF!)","v":{"$error":"#REF!"}},{"$f":"SUM(#REF!)","v":{"$error":"#REF!"}},{"$f":"SUM(#REF!)","v":{"$error":"#REF!"}},{"$f":"SUM(#REF!)","v":{"$error":"#REF!"}},{"$f":"SUM(#REF!)","v":{"$error":"#REF!"}},{"$f":"SUM(#REF!)","v":{"$error":"#REF!"}},{"$f":"SUM(#REF!)","v":{"$error":"#REF!"}},{"$f":"SUM(#REF!)","v":{"$error":"#REF!"}},{"$f":"SUM(#REF!)","v":{"$error":"#REF!"}},{"$f":"SUM(#REF!)","v":{"$error":"#REF!"}},{"$f":"SUM(#REF!)","v":{"$error":"#REF!"}},{"$f":"SUM(#REF!)","v":{"$error":"#REF!"}},{"$f":"SUM(#REF!)","v":{"$error":"#REF!"}},{"$f":"SUM(#REF!)","v":{"$error":"#REF!"}},{"$f":"SUM(#REF!)","v":{"$error":"#REF!"}},{"$f":"SUM(#REF!)","v":{"$error":"#REF!"}},{"$f":"SUM(#REF!)","v":{"$error":"#REF!"}},{"$f":"SUM(#REF!)","v":{"$error":"#REF!"}},{"$f":"SUM(#REF!)","v":{"$error":"#REF!"}},{"$f":"SUM(#REF!)","v":{"$error":"#REF!"}},{"$f":"SUM(#REF!)","v":{"$error":"#REF!"}},{"$f":"SUM(#REF!)","v":{"$error":"#REF!"}},{"$f":"SUM(#REF!)","v":{"$error":"#REF!"}},{"$f":"SUM(#REF!)","v":{"$error":"#REF!"}},{"$f":"SUM(#REF!)","v":{"$error":"#REF!"}},{"$f":"SUM(#REF!)","v":{"$error":"#REF!"}},{"$f":"SUM(#REF!)","v":{"$error":"#REF!"}},{"$f":"SUM(#REF!)","v":{"$error":"#REF!"}},{"$f":"SUM(#REF!)","v":{"$error":"#REF!"}},{"$f":"SUM(#REF!)","v":{"$error":"#REF!"}},{"$f":"SUM(#REF!)","v":{"$error":"#REF!"}},{"$f":"SUM(#REF!)","v":{"$error":"#REF!"}},{"$f":"SUM(#REF!)","v":{"$error":"#REF!"}},{"$f":"SUM(#REF!)","v":{"$error":"#REF!"}},{"$f":"SUM(#REF!)","v":{"$error":"#REF!"}},{"$f":"SUM(#REF!)","v":{"$error":"#REF!"}},{"$f":"SUM(#REF!)","v":{"$error":"#REF!"}},{"$f":"SUM(#REF!)","v":{"$error":"#REF!"}},{"$f":"SUM(#REF!)","v":{"$error":"#REF!"}},{"$f":"SUM(#REF!)","v":{"$error":"#REF!"}},{"$f":"SUM(#REF!)","v":{"$error":"#REF!"}},{"$f":"SUM(#REF!)","v":{"$error":"#REF!"}},{"$f":"SUM(#REF!)","v":{"$error":"#REF!"}},{"$f":"SUM(#REF!)","v":{"$error":"#REF!"}},{"$f":"SUM(#REF!)","v":{"$error":"#REF!"}},{"$f":"SUM(#REF!)","v":{"$error":"#REF!"}},{"$f":"SUM(#REF!)","v":{"$error":"#REF!"}},{"$f":"SUM(#REF!)","v":{"$error":"#REF!"}},{"$f":"SUM(#REF!)","v":{"$error":"#REF!"}},{"$f":"SUM(#REF!)","v":{"$error":"#REF!"}},{"$f":"SUM(#REF!)","v":{"$error":"#REF!"}},{"$f":"SUM(#REF!)","v":{"$error":"#REF!"}},{"$f":"SUM(#REF!)","v":{"$error":"#REF!"}},{"$f":"SUM(#REF!)","v":{"$error":"#REF!"}},{"$f":"SUM(#REF!)","v":{"$error":"#REF!"}},{"$f":"SUM(#REF!)","v":{"$error":"#REF!"}},{"$f":"SUM(#REF!)","v":{"$error":"#REF!"}},{"$f":"SUM(#REF!)","v":{"$error":"#REF!"}},{"$f":"SUM(#REF!)","v":{"$error":"#REF!"}},{"$f":"SUM(#REF!)","v":{"$error":"#REF!"}},{"$f":"SUM(#REF!)","v":{"$error":"#REF!"}},{"$f":"SUM(#REF!)","v":{"$error":"#REF!"}},{"$f":"SUM(#REF!)","v":{"$error":"#REF!"}},{"$f":"SUM(#REF!)","v":{"$error":"#REF!"}},{"$f":"SUM(#REF!)","v":{"$error":"#REF!"}},{"$f":"SUM(#REF!)","v":{"$error":"#REF!"}},{"$f":"SUM(#REF!)","v":{"$error":"#REF!"}},{"$f":"SUM(#REF!)","v":{"$error":"#REF!"}},{"$f":"SUM(#REF!)","v":{"$error":"#REF!"}},{"$f":"SUM(#REF!)","v":{"$error":"#REF!"}},{"$f":"SUM(#REF!)","v":{"$error":"#REF!"}},{"$f":"SUM(#REF!)","v":{"$error":"#REF!"}},{"$f":"SUM(#REF!)","v":{"$error":"#REF!"}},{"$f":"SUM(#REF!)","v":{"$error":"#REF!"}},{"$f":"SUM(#REF!)","v":{"$error":"#REF!"}},{"$f":"SUM(#REF!)","v":{"$error":"#REF!"}},{"$f":"SUM(#REF!)","v":{"$error":"#REF!"}},{"$f":"SUM(#REF!)","v":{"$error":"#REF!"}},{"$f":"SUM(#REF!)","v":{"$error":"#REF!"}},{"$f":"SUM(#REF!)","v":{"$error":"#REF!"}},{"$f":"SUM(#REF!)","v":{"$error":"#REF!"}},{"$f":"SUM(#REF!)","v":{"$error":"#REF!"}},{"$f":"SUM(#REF!)","v":{"$error":"#REF!"}},{"$f":"SUM(#REF!)","v":{"$error":"#REF!"}},{"$f":"SUM(#REF!)","v":{"$error":"#REF!"}},{"$f":"SUM(#REF!)","v":{"$error":"#REF!"}},{"$f":"SUM(#REF!)","v":{"$error":"#REF!"}},{"$f":"SUM(#REF!)","v":{"$error":"#REF!"}},{"$f":"SUM(#REF!)","v":{"$error":"#REF!"}},{"$f":"SUM(#REF!)","v":{"$error":"#REF!"}},{"$f":"SUM(#REF!)","v":{"$error":"#REF!"}},{"$f":"SUM(#REF!)","v":{"$error":"#REF!"}},{"$f":"SUM(#REF!)","v":{"$error":"#REF!"}},{"$f":"SUM(#REF!)","v":{"$error":"#REF!"}},{"$f":"SUM(#REF!)","v":{"$error":"#REF!"}},{"$f":"SUM(#REF!)","v":{"$error":"#REF!"}},{"$f":"SUM(#REF!)","v":{"$error":"#REF!"}},{"$f":"SUM(#REF!)","v":{"$error":"#REF!"}},{"$f":"SUM(#REF!)","v":{"$error":"#REF!"}},{"$f":"SUM(#REF!)","v":{"$error":"#REF!"}},{"$f":"SUM(#REF!)","v":{"$error":"#REF!"}},{"$f":"SUM(#REF!)","v":{"$error":"#REF!"}},{"$f":"SUM(#REF!)","v":{"$error":"#REF!"}},{"$f":"SUM(#REF!)","v":{"$error":"#REF!"}},{"$f":"SUM(#REF!)","v":{"$error":"#REF!"}},{"$f":"SUM(#REF!)","v":{"$error":"#REF!"}},{"$f":"SUM(#REF!)","v":{"$error":"#REF!"}},{"$f":"SUM(#REF!)","v":{"$error":"#REF!"}},{"$f":"SUM(#REF!)","v":{"$error":"#REF!"}},{"$f":"SUM(#REF!)","v":{"$error":"#REF!"}},{"$f":"SUM(#REF!)","v":{"$error":"#REF!"}},{"$f":"SUM(#REF!)","v":{"$error":"#REF!"}},{"$f":"SUM(#REF!)","v":{"$error":"#REF!"}},{"$f":"SUM(#REF!)","v":{"$error":"#REF!"}},{"$f":"SUM(#REF!)","v":{"$error":"#REF!"}},{"$f":"SUM(#REF!)","v":{"$error":"#REF!"}},{"$f":"SUM(#REF!)","v":{"$error":"#REF!"}},{"$f":"SUM(#REF!)","v":{"$error":"#REF!"}},{"$f":"SUM(#REF!)","v":{"$error":"#REF!"}},{"$f":"SUM(#REF!)","v":{"$error":"#REF!"}},{"$f":"SUM(#REF!)","v":{"$error":"#REF!"}},{"$f":"SUM(#REF!)","v":{"$error":"#REF!"}},{"$f":"SUM(#REF!)","v":{"$error":"#REF!"}},{"$f":"SUM(#REF!)","v":{"$error":"#REF!"}},{"$f":"SUM(#REF!)","v":{"$error":"#REF!"}},{"$f":"SUM(#REF!)","v":{"$error":"#REF!"}},{"$f":"SUM(#REF!)","v":{"$error":"#REF!"}},{"$f":"SUM(#REF!)","v":{"$error":"#REF!"}},{"$f":"SUM(#REF!)","v":{"$error":"#REF!"}},{"$f":"SUM(#REF!)","v":{"$error":"#REF!"}},{"$f":"SUM(#REF!)","v":{"$error":"#REF!"}},{"$f":"SUM(#REF!)","v":{"$error":"#REF!"}},{"$f":"SUM(#REF!)","v":{"$error":"#REF!"}},{"$f":"SUM(#REF!)","v":{"$error":"#REF!"}},{"$f":"SUM(#REF!)","v":{"$error":"#REF!"}},{"$f":"SUM(#REF!)","v":{"$error":"#REF!"}},{"$f":"SUM(#REF!)","v":{"$error":"#REF!"}},{"$f":"SUM(#REF!)","v":{"$error":"#REF!"}},{"$f":"SUM(#REF!)","v":{"$error":"#REF!"}},{"$f":"SUM(#REF!)","v":{"$error":"#REF!"}},{"$f":"SUM(#REF!)","v":{"$error":"#REF!"}},{"$f":"SUM(#REF!)","v":{"$error":"#REF!"}},{"$f":"SUM(#REF!)","v":{"$error":"#REF!"}},{"$f":"SUM(#REF!)","v":{"$error":"#REF!"}},{"$f":"SUM(#REF!)","v":{"$error":"#REF!"}},{"$f":"SUM(#REF!)","v":{"$error":"#REF!"}},{"$f":"SUM(#REF!)","v":{"$error":"#REF!"}},{"$f":"SUM(#REF!)","v":{"$error":"#REF!"}},{"$f":"SUM(#REF!)","v":{"$error":"#REF!"}},{"$f":"SUM(#REF!)","v":{"$error":"#REF!"}},{"$f":"SUM(#REF!)","v":{"$error":"#REF!"}},{"$f":"SUM(#REF!)","v":{"$error":"#REF!"}},{"$f":"SUM(#REF!)","v":{"$error":"#REF!"}},{"$f":"SUM(#REF!)","v":{"$error":"#REF!"}},{"$f":"SUM(#REF!)","v":{"$error":"#REF!"}},{"$f":"SUM(#REF!)","v":{"$error":"#REF!"}},{"$f":"SUM(#REF!)","v":{"$error":"#REF!"}},{"$f":"SUM(#REF!)","v":{"$error":"#REF!"}},{"$f":"SUM(#REF!)","v":{"$error":"#REF!"}},{"$f":"SUM(#REF!)","v":{"$error":"#REF!"}},{"$f":"SUM(#REF!)","v":{"$error":"#REF!"}},{"$f":"SUM(#REF!)","v":{"$error":"#REF!"}},{"$f":"SUM(#REF!)","v":{"$error":"#REF!"}},{"$f":"SUM(#REF!)","v":{"$error":"#REF!"}},{"$f":"SUM(#REF!)","v":{"$error":"#REF!"}},{"$f":"SUM(#REF!)","v":{"$error":"#REF!"}},{"$f":"SUM(#REF!)","v":{"$error":"#REF!"}},{"$f":"SUM(#REF!)","v":{"$error":"#REF!"}},{"$f":"SUM(#REF!)","v":{"$error":"#REF!"}},{"$f":"SUM(#REF!)","v":{"$error":"#REF!"}},{"$f":"SUM(#REF!)","v":{"$error":"#REF!"}},{"$f":"SUM(#REF!)","v":{"$error":"#REF!"}},{"$f":"SUM(#REF!)","v":{"$error":"#REF!"}},{"$f":"SUM(#REF!)","v":{"$error":"#REF!"}},{"$f":"SUM(#REF!)","v":{"$error":"#REF!"}},{"$f":"SUM(#REF!)","v":{"$error":"#REF!"}},{"$f":"SUM(#REF!)","v":{"$error":"#REF!"}},{"$f":"SUM(#REF!)","v":{"$error":"#REF!"}},{"$f":"SUM(#REF!)","v":{"$error":"#REF!"}},{"$f":"SUM(#REF!)","v":{"$error":"#REF!"}},{"$f":"SUM(#REF!)","v":{"$error":"#REF!"}},{"$f":"SUM(#REF!)","v":{"$error":"#REF!"}},{"$f":"SUM(#REF!)","v":{"$error":"#REF!"}},{"$f":"SUM(#REF!)","v":{"$error":"#REF!"}},{"$f":"SUM(#REF!)","v":{"$error":"#REF!"}},{"$f":"SUM(#REF!)","v":{"$error":"#REF!"}},{"$f":"SUM(#REF!)","v":{"$error":"#REF!"}},{"$f":"SUM(#REF!)","v":{"$error":"#REF!"}},{"$f":"SUM(#REF!)","v":{"$error":"#REF!"}},{"$f":"SUM(#REF!)","v":{"$error":"#REF!"}},{"$f":"SUM(#REF!)","v":{"$error":"#REF!"}},{"$f":"SUM(#REF!)","v":{"$error":"#REF!"}},{"$f":"SUM(#REF!)","v":{"$error":"#REF!"}},{"$f":"SUM(#REF!)","v":{"$error":"#REF!"}},{"$f":"SUM(#REF!)","v":{"$error":"#REF!"}},{"$f":"SUM(#REF!)","v":{"$error":"#REF!"}},{"$f":"SUM(#REF!)","v":{"$error":"#REF!"}},{"$f":"SUM(#REF!)","v":{"$error":"#REF!"}},{"$f":"SUM(#REF!)","v":{"$error":"#REF!"}},{"$f":"SUM(#REF!)","v":{"$error":"#REF!"}},{"$f":"SUM(#REF!)","v":{"$error":"#REF!"}},{"$f":"SUM(#REF!)","v":{"$error":"#REF!"}},{"$f":"SUM(#REF!)","v":{"$error":"#REF!"}},{"$f":"SUM(#REF!)","v":{"$error":"#REF!"}},{"$f":"SUM(#REF!)","v":{"$error":"#REF!"}},{"$f":"SUM(#REF!)","v":{"$error":"#REF!"}},{"$f":"SUM(#REF!)","v":{"$error":"#REF!"}},{"$f":"SUM(#REF!)","v":{"$error":"#REF!"}},{"$f":"SUM(#REF!)","v":{"$error":"#REF!"}},{"$f":"SUM(#REF!)","v":{"$error":"#REF!"}},{"$f":"SUM(#REF!)","v":{"$error":"#REF!"}},{"$f":"SUM(#REF!)","v":{"$error":"#REF!"}},{"$f":"SUM(#REF!)","v":{"$error":"#REF!"}},{"$f":"SUM(#REF!)","v":{"$error":"#REF!"}},{"$f":"SUM(#REF!)","v":{"$error":"#REF!"}},{"$f":"SUM(#REF!)","v":{"$error":"#REF!"}},{"$f":"SUM(#REF!)","v":{"$error":"#REF!"}},{"$f":"SUM(#REF!)","v":{"$error":"#REF!"}},{"$f":"SUM(#REF!)","v":{"$error":"#REF!"}},{"$f":"SUM(#REF!)","v":{"$error":"#REF!"}},{"$f":"SUM(#REF!)","v":{"$error":"#REF!"}},{"$f":"SUM(#REF!)","v":{"$error":"#REF!"}},{"$f":"SUM(#REF!)","v":{"$error":"#REF!"}},{"$f":"SUM(#REF!)","v":{"$error":"#REF!"}},{"$f":"SUM(#REF!)","v":{"$error":"#REF!"}},{"$f":"SUM(#REF!)","v":{"$error":"#REF!"}},{"$f":"SUM(#REF!)","v":{"$error":"#REF!"}},{"$f":"SUM(#REF!)","v":{"$error":"#REF!"}},{"$f":"SUM(#REF!)","v":{"$error":"#REF!"}},{"$f":"SUM(#REF!)","v":{"$error":"#REF!"}},{"$f":"SUM(#REF!)","v":{"$error":"#REF!"}},{"$f":"SUM(#REF!)","v":{"$error":"#REF!"}},{"$f":"SUM(#REF!)","v":{"$error":"#REF!"}},{"$f":"SUM(#REF!)","v":{"$error":"#REF!"}},{"$f":"SUM(#REF!)","v":{"$error":"#REF!"}},{"$f":"SUM(#REF!)","v":{"$error":"#REF!"}},{"$f":"SUM(#REF!)","v":{"$error":"#REF!"}},{"$f":"SUM(#REF!)","v":{"$error":"#REF!"}},{"$f":"SUM(#REF!)","v":{"$error":"#REF!"}},{"$f":"SUM(#REF!)","v":{"$error":"#REF!"}},{"$f":"SUM(#REF!)","v":{"$error":"#REF!"}},{"$f":"SUM(#REF!)","v":{"$error":"#REF!"}},{"$f":"SUM(#REF!)","v":{"$error":"#REF!"}},{"$f":"SUM(#REF!)","v":{"$error":"#REF!"}},{"$f":"SUM(#REF!)","v":{"$error":"#REF!"}},{"$f":"SUM(#REF!)","v":{"$error":"#REF!"}},{"$f":"SUM(#REF!)","v":{"$error":"#REF!"}},{"$f":"SUM(#REF!)","v":{"$error":"#REF!"}},{"$f":"SUM(#REF!)","v":{"$error":"#REF!"}},{"$f":"SUM(#REF!)","v":{"$error":"#REF!"}},{"$f":"SUM(#REF!)","v":{"$error":"#REF!"}},{"$f":"SUM(#REF!)","v":{"$error":"#REF!"}},{"$f":"SUM(#REF!)","v":{"$error":"#REF!"}},{"$f":"SUM(#REF!)","v":{"$error":"#REF!"}},{"$f":"SUM(#REF!)","v":{"$error":"#REF!"}},{"$f":"SUM(#REF!)","v":{"$error":"#REF!"}},{"$f":"SUM(#REF!)","v":{"$error":"#REF!"}},{"$f":"SUM(#REF!)","v":{"$error":"#REF!"}},{"$f":"SUM(#REF!)","v":{"$error":"#REF!"}},{"$f":"SUM(#REF!)","v":{"$error":"#REF!"}},{"$f":"SUM(#REF!)","v":{"$error":"#REF!"}},{"$f":"SUM(#REF!)","v":{"$error":"#REF!"}},{"$f":"SUM(#REF!)","v":{"$error":"#REF!"}},{"$f":"SUM(#REF!)","v":{"$error":"#REF!"}},{"$f":"SUM(#REF!)","v":{"$error":"#REF!"}},{"$f":"SUM(#REF!)","v":{"$error":"#REF!"}},{"$f":"SUM(#REF!)","v":{"$error":"#REF!"}},{"$f":"SUM(#REF!)","v":{"$error":"#REF!"}},{"$f":"SUM(#REF!)","v":{"$error":"#REF!"}},{"$f":"SUM(#REF!)","v":{"$error":"#REF!"}},{"$f":"SUM(#REF!)","v":{"$error":"#REF!"}},{"$f":"SUM(#REF!)","v":{"$error":"#REF!"}},{"$f":"SUM(#REF!)","v":{"$error":"#REF!"}},{"$f":"SUM(#REF!)","v":{"$error":"#REF!"}},{"$f":"SUM(#REF!)","v":{"$error":"#REF!"}},{"$f":"SUM(#REF!)","v":{"$error":"#REF!"}},{"$f":"SUM(#REF!)","v":{"$error":"#REF!"}},{"$f":"SUM(#REF!)","v":{"$error":"#REF!"}},{"$f":"SUM(#REF!)","v":{"$error":"#REF!"}},{"$f":"SUM(#REF!)","v":{"$error":"#REF!"}},{"$f":"SUM(#REF!)","v":{"$error":"#REF!"}},{"$f":"SUM(#REF!)","v":{"$error":"#REF!"}},{"$f":"SUM(#REF!)","v":{"$error":"#REF!"}},{"$f":"SUM(#REF!)","v":{"$error":"#REF!"}},{"$f":"SUM(#REF!)","v":{"$error":"#REF!"}},{"$f":"SUM(#REF!)","v":{"$error":"#REF!"}},{"$f":"SUM(#REF!)","v":{"$error":"#REF!"}},{"$f":"SUM(#REF!)","v":{"$error":"#REF!"}},{"$f":"SUM(#REF!)","v":{"$error":"#REF!"}},{"$f":"SUM(#REF!)","v":{"$error":"#REF!"}},{"$f":"SUM(#REF!)","v":{"$error":"#REF!"}},{"$f":"SUM(#REF!)","v":{"$error":"#REF!"}},{"$f":"SUM(#REF!)","v":{"$error":"#REF!"}},{"$f":"SUM(#REF!)","v":{"$error":"#REF!"}},{"$f":"SUM(#REF!)","v":{"$error":"#REF!"}},{"$f":"SUM(#REF!)","v":{"$error":"#REF!"}},{"$f":"SUM(#REF!)","v":{"$error":"#REF!"}},{"$f":"SUM(#REF!)","v":{"$error":"#REF!"}},{"$f":"SUM(#REF!)","v":{"$error":"#REF!"}},{"$f":"SUM(#REF!)","v":{"$error":"#REF!"}},{"$f":"SUM(#REF!)","v":{"$error":"#REF!"}},{"$f":"SUM(#REF!)","v":{"$error":"#REF!"}},{"$f":"SUM(#REF!)","v":{"$error":"#REF!"}},{"$f":"SUM(#REF!)","v":{"$error":"#REF!"}},{"$f":"SUM(#REF!)","v":{"$error":"#REF!"}},{"$f":"SUM(#REF!)","v":{"$error":"#REF!"}},{"$f":"SUM(#REF!)","v":{"$error":"#REF!"}},{"$f":"SUM(#REF!)","v":{"$error":"#REF!"}},{"$f":"SUM(#REF!)","v":{"$error":"#REF!"}},{"$f":"SUM(#REF!)","v":{"$error":"#REF!"}},{"$f":"SUM(#REF!)","v":{"$error":"#REF!"}},{"$f":"SUM(#REF!)","v":{"$error":"#REF!"}},{"$f":"SUM(#REF!)","v":{"$error":"#REF!"}},{"$f":"SUM(#REF!)","v":{"$error":"#REF!"}},{"$f":"SUM(#REF!)","v":{"$error":"#REF!"}},{"$f":"SUM(#REF!)","v":{"$error":"#REF!"}},{"$f":"SUM(#REF!)","v":{"$error":"#REF!"}},{"$f":"SUM(#REF!)","v":{"$error":"#REF!"}},{"$f":"SUM(#REF!)","v":{"$error":"#REF!"}},{"$f":"SUM(#REF!)","v":{"$error":"#REF!"}},{"$f":"SUM(#REF!)","v":{"$error":"#REF!"}},{"$f":"SUM(#REF!)","v":{"$error":"#REF!"}},{"$f":"SUM(#REF!)","v":{"$error":"#REF!"}},{"$f":"SUM(#REF!)","v":{"$error":"#REF!"}},{"$f":"SUM(#REF!)","v":{"$error":"#REF!"}},{"$f":"SUM(#REF!)","v":{"$error":"#REF!"}},{"$f":"SUM(#REF!)","v":{"$error":"#REF!"}},{"$f":"SUM(#REF!)","v":{"$error":"#REF!"}},{"$f":"SUM(#REF!)","v":{"$error":"#REF!"}},{"$f":"SUM(#REF!)","v":{"$error":"#REF!"}},{"$f":"SUM(#REF!)","v":{"$error":"#REF!"}},{"$f":"SUM(#REF!)","v":{"$error":"#REF!"}},{"$f":"SUM(#REF!)","v":{"$error":"#REF!"}},{"$f":"SUM(#REF!)","v":{"$error":"#REF!"}},{"$f":"SUM(#REF!)","v":{"$error":"#REF!"}},{"$f":"SUM(#REF!)","v":{"$error":"#REF!"}},{"$f":"SUM(#REF!)","v":{"$error":"#REF!"}},{"$f":"SUM(#REF!)","v":{"$error":"#REF!"}},{"$f":"SUM(#REF!)","v":{"$error":"#REF!"}},{"$f":"SUM(#REF!)","v":{"$error":"#REF!"}},{"$f":"SUM(#REF!)","v":{"$error":"#REF!"}},{"$f":"SUM(#REF!)","v":{"$error":"#REF!"}},{"$f":"SUM(#REF!)","v":{"$error":"#REF!"}},{"$f":"SUM(#REF!)","v":{"$error":"#REF!"}},{"$f":"SUM(#REF!)","v":{"$error":"#REF!"}},{"$f":"SUM(#REF!)","v":{"$error":"#REF!"}},{"$f":"SUM(#REF!)","v":{"$error":"#REF!"}},{"$f":"SUM(#REF!)","v":{"$error":"#REF!"}},{"$f":"SUM(#REF!)","v":{"$error":"#REF!"}},{"$f":"SUM(#REF!)","v":{"$error":"#REF!"}},{"$f":"SUM(#REF!)","v":{"$error":"#REF!"}},{"$f":"SUM(#REF!)","v":{"$error":"#REF!"}},{"$f":"SUM(#REF!)","v":{"$error":"#REF!"}},{"$f":"SUM(#REF!)","v":{"$error":"#REF!"}},{"$f":"SUM(#REF!)","v":{"$error":"#REF!"}},{"$f":"SUM(#REF!)","v":{"$error":"#REF!"}},{"$f":"SUM(#REF!)","v":{"$error":"#REF!"}},{"$f":"SUM(#REF!)","v":{"$error":"#REF!"}},{"$f":"SUM(#REF!)","v":{"$error":"#REF!"}},{"$f":"SUM(#REF!)","v":{"$error":"#REF!"}},{"$f":"SUM(#REF!)","v":{"$error":"#REF!"}},{"$f":"SUM(#REF!)","v":{"$error":"#REF!"}},{"$f":"SUM(#REF!)","v":{"$error":"#REF!"}},{"$f":"SUM(#REF!)","v":{"$error":"#REF!"}},{"$f":"SUM(#REF!)","v":{"$error":"#REF!"}},{"$f":"SUM(#REF!)","v":{"$error":"#REF!"}},{"$f":"SUM(#REF!)","v":{"$error":"#REF!"}},{"$f":"SUM(#REF!)","v":{"$error":"#REF!"}},{"$f":"SUM(#REF!)","v":{"$error":"#REF!"}},{"$f":"SUM(#REF!)","v":{"$error":"#REF!"}},{"$f":"SUM(#REF!)","v":{"$error":"#REF!"}},{"$f":"SUM(#REF!)","v":{"$error":"#REF!"}},{"$f":"SUM(#REF!)","v":{"$error":"#REF!"}},{"$f":"SUM(#REF!)","v":{"$error":"#REF!"}},{"$f":"SUM(#REF!)","v":{"$error":"#REF!"}},{"$f":"SUM(#REF!)","v":{"$error":"#REF!"}},{"$f":"SUM(#REF!)","v":{"$error":"#REF!"}},{"$f":"SUM(#REF!)","v":{"$error":"#REF!"}},{"$f":"SUM(#REF!)","v":{"$error":"#REF!"}},{"$f":"SUM(#REF!)","v":{"$error":"#REF!"}},{"$f":"SUM(#REF!)","v":{"$error":"#REF!"}},{"$f":"SUM(#REF!)","v":{"$error":"#REF!"}},{"$f":"SUM(#REF!)","v":{"$error":"#REF!"}},{"$f":"SUM(#REF!)","v":{"$error":"#REF!"}},{"$f":"SUM(#REF!)","v":{"$error":"#REF!"}},{"$f":"SUM(#REF!)","v":{"$error":"#REF!"}},{"$f":"SUM(#REF!)","v":{"$error":"#REF!"}},{"$f":"SUM(#REF!)","v":{"$error":"#REF!"}},{"$f":"SUM(#REF!)","v":{"$error":"#REF!"}},{"$f":"SUM(#REF!)","v":{"$error":"#REF!"}},{"$f":"SUM(#REF!)","v":{"$error":"#REF!"}},{"$f":"SUM(#REF!)","v":{"$error":"#REF!"}},{"$f":"SUM(#REF!)","v":{"$error":"#REF!"}},{"$f":"SUM(#REF!)","v":{"$error":"#REF!"}},{"$f":"SUM(#REF!)","v":{"$error":"#REF!"}},{"$f":"SUM(#REF!)","v":{"$error":"#REF!"}},{"$f":"SUM(#REF!)","v":{"$error":"#REF!"}},{"$f":"SUM(#REF!)","v":{"$error":"#REF!"}},{"$f":"SUM(#REF!)","v":{"$error":"#REF!"}},{"$f":"SUM(#REF!)","v":{"$error":"#REF!"}},{"$f":"SUM(#REF!)","v":{"$error":"#REF!"}},{"$f":"SUM(#REF!)","v":{"$error":"#REF!"}},{"$f":"SUM(#REF!)","v":{"$error":"#REF!"}},{"$f":"SUM(#REF!)","v":{"$error":"#REF!"}},{"$f":"SUM(#REF!)","v":{"$error":"#REF!"}},{"$f":"SUM(#REF!)","v":{"$error":"#REF!"}},{"$f":"SUM(#REF!)","v":{"$error":"#REF!"}},{"$f":"SUM(#REF!)","v":{"$error":"#REF!"}},{"$f":"SUM(#REF!)","v":{"$error":"#REF!"}},{"$f":"SUM(#REF!)","v":{"$error":"#REF!"}},{"$f":"SUM(#REF!)","v":{"$error":"#REF!"}},{"$f":"SUM(#REF!)","v":{"$error":"#REF!"}},{"$f":"SUM(#REF!)","v":{"$error":"#REF!"}},{"$f":"SUM(#REF!)","v":{"$error":"#REF!"}},{"$f":"SUM(#REF!)","v":{"$error":"#REF!"}},{"$f":"SUM(#REF!)","v":{"$error":"#REF!"}},{"$f":"SUM(#REF!)","v":{"$error":"#REF!"}},{"$f":"SUM(#REF!)","v":{"$error":"#REF!"}},{"$f":"SUM(#REF!)","v":{"$error":"#REF!"}},{"$f":"SUM(#REF!)","v":{"$error":"#REF!"}},{"$f":"SUM(#REF!)","v":{"$error":"#REF!"}},{"$f":"SUM(#REF!)","v":{"$error":"#REF!"}},{"$f":"SUM(#REF!)","v":{"$error":"#REF!"}},{"$f":"SUM(#REF!)","v":{"$error":"#REF!"}},{"$f":"SUM(#REF!)","v":{"$error":"#REF!"}},{"$f":"SUM(#REF!)","v":{"$error":"#REF!"}},{"$f":"SUM(#REF!)","v":{"$error":"#REF!"}},{"$f":"SUM(#REF!)","v":{"$error":"#REF!"}},{"$f":"SUM(#REF!)","v":{"$error":"#REF!"}},{"$f":"SUM(#REF!)","v":{"$error":"#REF!"}},{"$f":"SUM(#REF!)","v":{"$error":"#REF!"}},{"$f":"SUM(#REF!)","v":{"$error":"#REF!"}},{"$f":"SUM(#REF!)","v":{"$error":"#REF!"}},{"$f":"SUM(#REF!)","v":{"$error":"#REF!"}},{"$f":"SUM(#REF!)","v":{"$error":"#REF!"}},{"$f":"SUM(#REF!)","v":{"$error":"#REF!"}},{"$f":"SUM(#REF!)","v":{"$error":"#REF!"}},{"$f":"SUM(#REF!)","v":{"$error":"#REF!"}},{"$f":"SUM(#REF!)","v":{"$error":"#REF!"}},{"$f":"SUM(#REF!)","v":{"$error":"#REF!"}},{"$f":"SUM(#REF!)","v":{"$error":"#REF!"}},{"$f":"SUM(#REF!)","v":{"$error":"#REF!"}},{"$f":"SUM(#REF!)","v":{"$error":"#REF!"}},{"$f":"SUM(#REF!)","v":{"$error":"#REF!"}},{"$f":"SUM(#REF!)","v":{"$error":"#REF!"}},{"$f":"SUM(#REF!)","v":{"$error":"#REF!"}},{"$f":"SUM(#REF!)","v":{"$error":"#REF!"}},{"$f":"SUM(#REF!)","v":{"$error":"#REF!"}},{"$f":"SUM(#REF!)","v":{"$error":"#REF!"}},{"$f":"SUM(#REF!)","v":{"$error":"#REF!"}},{"$f":"SUM(#REF!)","v":{"$error":"#REF!"}},{"$f":"SUM(#REF!)","v":{"$error":"#REF!"}},{"$f":"SUM(#REF!)","v":{"$error":"#REF!"}},{"$f":"SUM(#REF!)","v":{"$error":"#REF!"}},{"$f":"SUM(#REF!)","v":{"$error":"#REF!"}},{"$f":"SUM(#REF!)","v":{"$error":"#REF!"}},{"$f":"SUM(#REF!)","v":{"$error":"#REF!"}},{"$f":"SUM(#REF!)","v":{"$error":"#REF!"}},{"$f":"SUM(#REF!)","v":{"$error":"#REF!"}},{"$f":"SUM(#REF!)","v":{"$error":"#REF!"}},{"$f":"SUM(#REF!)","v":{"$error":"#REF!"}},{"$f":"SUM(#REF!)","v":{"$error":"#REF!"}},{"$f":"SUM(#REF!)","v":{"$error":"#REF!"}},{"$f":"SUM(#REF!)","v":{"$error":"#REF!"}},{"$f":"SUM(#REF!)","v":{"$error":"#REF!"}},{"$f":"SUM(#REF!)","v":{"$error":"#REF!"}},{"$f":"SUM(#REF!)","v":{"$error":"#REF!"}},{"$f":"SUM(#REF!)","v":{"$error":"#REF!"}},{"$f":"SUM(#REF!)","v":{"$error":"#REF!"}},{"$f":"SUM(#REF!)","v":{"$error":"#REF!"}},{"$f":"SUM(#REF!)","v":{"$error":"#REF!"}},{"$f":"SUM(#REF!)","v":{"$error":"#REF!"}},{"$f":"SUM(#REF!)","v":{"$error":"#REF!"}},{"$f":"SUM(#REF!)","v":{"$error":"#REF!"}},{"$f":"SUM(#REF!)","v":{"$error":"#REF!"}},{"$f":"SUM(#REF!)","v":{"$error":"#REF!"}},{"$f":"SUM(#REF!)","v":{"$error":"#REF!"}},{"$f":"SUM(#REF!)","v":{"$error":"#REF!"}},{"$f":"SUM(#REF!)","v":{"$error":"#REF!"}},{"$f":"SUM(#REF!)","v":{"$error":"#REF!"}},{"$f":"SUM(#REF!)","v":{"$error":"#REF!"}},{"$f":"SUM(#REF!)","v":{"$error":"#REF!"}},{"$f":"SUM(#REF!)","v":{"$error":"#REF!"}},{"$f":"SUM(#REF!)","v":{"$error":"#REF!"}},{"$f":"SUM(#REF!)","v":{"$error":"#REF!"}},{"$f":"SUM(#REF!)","v":{"$error":"#REF!"}},{"$f":"SUM(#REF!)","v":{"$error":"#REF!"}},{"$f":"SUM(#REF!)","v":{"$error":"#REF!"}},{"$f":"SUM(#REF!)","v":{"$error":"#REF!"}},{"$f":"SUM(#REF!)","v":{"$error":"#REF!"}},{"$f":"SUM(#REF!)","v":{"$error":"#REF!"}},{"$f":"SUM(#REF!)","v":{"$error":"#REF!"}},{"$f":"SUM(#REF!)","v":{"$error":"#REF!"}},{"$f":"SUM(#REF!)","v":{"$error":"#REF!"}},{"$f":"SUM(#REF!)","v":{"$error":"#REF!"}},{"$f":"SUM(#REF!)","v":{"$error":"#REF!"}},{"$f":"SUM(#REF!)","v":{"$error":"#REF!"}},{"$f":"SUM(#REF!)","v":{"$error":"#REF!"}},{"$f":"SUM(#REF!)","v":{"$error":"#REF!"}},{"$f":"SUM(#REF!)","v":{"$error":"#REF!"}},{"$f":"SUM(#REF!)","v":{"$error":"#REF!"}},{"$f":"SUM(#REF!)","v":{"$error":"#REF!"}},{"$f":"SUM(#REF!)","v":{"$error":"#REF!"}},{"$f":"SUM(#REF!)","v":{"$error":"#REF!"}},{"$f":"SUM(#REF!)","v":{"$error":"#REF!"}},{"$f":"SUM(#REF!)","v":{"$error":"#REF!"}},{"$f":"SUM(#REF!)","v":{"$error":"#REF!"}},{"$f":"SUM(#REF!)","v":{"$error":"#REF!"}},{"$f":"SUM(#REF!)","v":{"$error":"#REF!"}},{"$f":"SUM(#REF!)","v":{"$error":"#REF!"}},{"$f":"SUM(#REF!)","v":{"$error":"#REF!"}},{"$f":"SUM(#REF!)","v":{"$error":"#REF!"}},{"$f":"SUM(#REF!)","v":{"$error":"#REF!"}},{"$f":"SUM(#REF!)","v":{"$error":"#REF!"}},{"$f":"SUM(#REF!)","v":{"$error":"#REF!"}},{"$f":"SUM(#REF!)","v":{"$error":"#REF!"}},{"$f":"SUM(#REF!)","v":{"$error":"#REF!"}},{"$f":"SUM(#REF!)","v":{"$error":"#REF!"}},{"$f":"SUM(#REF!)","v":{"$error":"#REF!"}},{"$f":"SUM(#REF!)","v":{"$error":"#REF!"}},{"$f":"SUM(#REF!)","v":{"$error":"#REF!"}},{"$f":"SUM(#REF!)","v":{"$error":"#REF!"}},{"$f":"SUM(#REF!)","v":{"$error":"#REF!"}},{"$f":"SUM(#REF!)","v":{"$error":"#REF!"}},{"$f":"SUM(#REF!)","v":{"$error":"#REF!"}},{"$f":"SUM(#REF!)","v":{"$error":"#REF!"}},{"$f":"SUM(#REF!)","v":{"$error":"#REF!"}},{"$f":"SUM(#REF!)","v":{"$error":"#REF!"}},{"$f":"SUM(#REF!)","v":{"$error":"#REF!"}},{"$f":"SUM(#REF!)","v":{"$error":"#REF!"}},{"$f":"SUM(#REF!)","v":{"$error":"#REF!"}},{"$f":"SUM(#REF!)","v":{"$error":"#REF!"}},{"$f":"SUM(#REF!)","v":{"$error":"#REF!"}},{"$f":"SUM(#REF!)","v":{"$error":"#REF!"}},{"$f":"SUM(#REF!)","v":{"$error":"#REF!"}},{"$f":"SUM(#REF!)","v":{"$error":"#REF!"}},{"$f":"SUM(#REF!)","v":{"$error":"#REF!"}},{"$f":"SUM(#REF!)","v":{"$error":"#REF!"}},{"$f":"SUM(#REF!)","v":{"$error":"#REF!"}},{"$f":"SUM(#REF!)","v":{"$error":"#REF!"}},{"$f":"SUM(#REF!)","v":{"$error":"#REF!"}},{"$f":"SUM(#REF!)","v":{"$error":"#REF!"}},{"$f":"SUM(#REF!)","v":{"$error":"#REF!"}},{"$f":"SUM(#REF!)","v":{"$error":"#REF!"}},{"$f":"SUM(#REF!)","v":{"$error":"#REF!"}},{"$f":"SUM(#REF!)","v":{"$error":"#REF!"}},{"$f":"SUM(#REF!)","v":{"$error":"#REF!"}},{"$f":"SUM(#REF!)","v":{"$error":"#REF!"}},{"$f":"SUM(#REF!)","v":{"$error":"#REF!"}},{"$f":"SUM(#REF!)","v":{"$error":"#REF!"}},{"$f":"SUM(#REF!)","v":{"$error":"#REF!"}},{"$f":"SUM(#REF!)","v":{"$error":"#REF!"}},{"$f":"SUM(#REF!)","v":{"$error":"#REF!"}},{"$f":"SUM(#REF!)","v":{"$error":"#REF!"}},{"$f":"SUM(#REF!)","v":{"$error":"#REF!"}},{"$f":"SUM(#REF!)","v":{"$error":"#REF!"}},{"$f":"SUM(#REF!)","v":{"$error":"#REF!"}},{"$f":"SUM(#REF!)","v":{"$error":"#REF!"}},{"$f":"SUM(#REF!)","v":{"$error":"#REF!"}},{"$f":"SUM(#REF!)","v":{"$error":"#REF!"}},{"$f":"SUM(#REF!)","v":{"$error":"#REF!"}},{"$f":"SUM(#REF!)","v":{"$error":"#REF!"}},{"$f":"SUM(#REF!)","v":{"$error":"#REF!"}},{"$f":"SUM(#REF!)","v":{"$error":"#REF!"}},{"$f":"SUM(#REF!)","v":{"$error":"#REF!"}},{"$f":"SUM(#REF!)","v":{"$error":"#REF!"}},{"$f":"SUM(#REF!)","v":{"$error":"#REF!"}},{"$f":"SUM(#REF!)","v":{"$error":"#REF!"}},{"$f":"SUM(#REF!)","v":{"$error":"#REF!"}},{"$f":"SUM(#REF!)","v":{"$error":"#REF!"}},{"$f":"SUM(#REF!)","v":{"$error":"#REF!"}},{"$f":"SUM(#REF!)","v":{"$error":"#REF!"}},{"$f":"SUM(#REF!)","v":{"$error":"#REF!"}},{"$f":"SUM(#REF!)","v":{"$error":"#REF!"}},{"$f":"SUM(#REF!)","v":{"$error":"#REF!"}},{"$f":"SUM(#REF!)","v":{"$error":"#REF!"}},{"$f":"SUM(#REF!)","v":{"$error":"#REF!"}},{"$f":"SUM(#REF!)","v":{"$error":"#REF!"}},{"$f":"SUM(#REF!)","v":{"$error":"#REF!"}},{"$f":"SUM(#REF!)","v":{"$error":"#REF!"}},{"$f":"SUM(#REF!)","v":{"$error":"#REF!"}},{"$f":"SUM(#REF!)","v":{"$error":"#REF!"}},{"$f":"SUM(#REF!)","v":{"$error":"#REF!"}},{"$f":"SUM(#REF!)","v":{"$error":"#REF!"}},{"$f":"SUM(#REF!)","v":{"$error":"#REF!"}},{"$f":"SUM(#REF!)","v":{"$error":"#REF!"}},{"$f":"SUM(#REF!)","v":{"$error":"#REF!"}},{"$f":"SUM(#REF!)","v":{"$error":"#REF!"}},{"$f":"SUM(#REF!)","v":{"$error":"#REF!"}},{"$f":"SUM(#REF!)","v":{"$error":"#REF!"}},{"$f":"SUM(#REF!)","v":{"$error":"#REF!"}},{"$f":"SUM(#REF!)","v":{"$error":"#REF!"}},{"$f":"SUM(#REF!)","v":{"$error":"#REF!"}},{"$f":"SUM(#REF!)","v":{"$error":"#REF!"}},{"$f":"SUM(#REF!)","v":{"$error":"#REF!"}},{"$f":"SUM(#REF!)","v":{"$error":"#REF!"}},{"$f":"SUM(#REF!)","v":{"$error":"#REF!"}},{"$f":"SUM(#REF!)","v":{"$error":"#REF!"}},{"$f":"SUM(#REF!)","v":{"$error":"#REF!"}},{"$f":"SUM(#REF!)","v":{"$error":"#REF!"}},{"$f":"SUM(#REF!)","v":{"$error":"#REF!"}},{"$f":"SUM(#REF!)","v":{"$error":"#REF!"}},{"$f":"SUM(#REF!)","v":{"$error":"#REF!"}},{"$f":"SUM(#REF!)","v":{"$error":"#REF!"}},{"$f":"SUM(#REF!)","v":{"$error":"#REF!"}},{"$f":"SUM(#REF!)","v":{"$error":"#REF!"}},{"$f":"SUM(#REF!)","v":{"$error":"#REF!"}},{"$f":"SUM(#REF!)","v":{"$error":"#REF!"}},{"$f":"SUM(#REF!)","v":{"$error":"#REF!"}},{"$f":"SUM(#REF!)","v":{"$error":"#REF!"}},{"$f":"SUM(#REF!)","v":{"$error":"#REF!"}},{"$f":"SUM(#REF!)","v":{"$error":"#REF!"}},{"$f":"SUM(#REF!)","v":{"$error":"#REF!"}},{"$f":"SUM(#REF!)","v":{"$error":"#REF!"}},{"$f":"SUM(#REF!)","v":{"$error":"#REF!"}},{"$f":"SUM(#REF!)","v":{"$error":"#REF!"}},{"$f":"SUM(#REF!)","v":{"$error":"#REF!"}},{"$f":"SUM(#REF!)","v":{"$error":"#REF!"}},{"$f":"SUM(#REF!)","v":{"$error":"#REF!"}},{"$f":"SUM(#REF!)","v":{"$error":"#REF!"}},{"$f":"SUM(#REF!)","v":{"$error":"#REF!"}},{"$f":"SUM(#REF!)","v":{"$error":"#REF!"}},{"$f":"SUM(#REF!)","v":{"$error":"#REF!"}},{"$f":"SUM(#REF!)","v":{"$error":"#REF!"}},{"$f":"SUM(#REF!)","v":{"$error":"#REF!"}},{"$f":"SUM(#REF!)","v":{"$error":"#REF!"}},{"$f":"SUM(#REF!)","v":{"$error":"#REF!"}},{"$f":"SUM(#REF!)","v":{"$error":"#REF!"}},{"$f":"SUM(#REF!)","v":{"$error":"#REF!"}},{"$f":"SUM(#REF!)","v":{"$error":"#REF!"}},{"$f":"SUM(#REF!)","v":{"$error":"#REF!"}},{"$f":"SUM(#REF!)","v":{"$error":"#REF!"}},{"$f":"SUM(#REF!)","v":{"$error":"#REF!"}},{"$f":"SUM(#REF!)","v":{"$error":"#REF!"}},{"$f":"SUM(#REF!)","v":{"$error":"#REF!"}},{"$f":"SUM(#REF!)","v":{"$error":"#REF!"}},{"$f":"SUM(#REF!)","v":{"$error":"#REF!"}},{"$f":"SUM(#REF!)","v":{"$error":"#REF!"}},{"$f":"SUM(#REF!)","v":{"$error":"#REF!"}},{"$f":"SUM(#REF!)","v":{"$error":"#REF!"}},{"$f":"SUM(#REF!)","v":{"$error":"#REF!"}},{"$f":"SUM(#REF!)","v":{"$error":"#REF!"}},{"$f":"SUM(#REF!)","v":{"$error":"#REF!"}},{"$f":"SUM(#REF!)","v":{"$error":"#REF!"}},{"$f":"SUM(#REF!)","v":{"$error":"#REF!"}},{"$f":"SUM(#REF!)","v":{"$error":"#REF!"}},{"$f":"SUM(#REF!)","v":{"$error":"#REF!"}},{"$f":"SUM(#REF!)","v":{"$error":"#REF!"}},{"$f":"SUM(#REF!)","v":{"$error":"#REF!"}},{"$f":"SUM(#REF!)","v":{"$error":"#REF!"}},{"$f":"SUM(#REF!)","v":{"$error":"#REF!"}},{"$f":"SUM(#REF!)","v":{"$error":"#REF!"}},{"$f":"SUM(#REF!)","v":{"$error":"#REF!"}},{"$f":"SUM(#REF!)","v":{"$error":"#REF!"}},{"$f":"SUM(#REF!)","v":{"$error":"#REF!"}},{"$f":"SUM(#REF!)","v":{"$error":"#REF!"}},{"$f":"SUM(#REF!)","v":{"$error":"#REF!"}},{"$f":"SUM(#REF!)","v":{"$error":"#REF!"}},{"$f":"SUM(#REF!)","v":{"$error":"#REF!"}},{"$f":"SUM(#REF!)","v":{"$error":"#REF!"}},{"$f":"SUM(#REF!)","v":{"$error":"#REF!"}},{"$f":"SUM(#REF!)","v":{"$error":"#REF!"}},{"$f":"SUM(#REF!)","v":{"$error":"#REF!"}},{"$f":"SUM(#REF!)","v":{"$error":"#REF!"}},{"$f":"SUM(#REF!)","v":{"$error":"#REF!"}},{"$f":"SUM(#REF!)","v":{"$error":"#REF!"}},{"$f":"SUM(#REF!)","v":{"$error":"#REF!"}},{"$f":"SUM(#REF!)","v":{"$error":"#REF!"}},{"$f":"SUM(#REF!)","v":{"$error":"#REF!"}},{"$f":"SUM(#REF!)","v":{"$error":"#REF!"}},{"$f":"SUM(#REF!)","v":{"$error":"#REF!"}},{"$f":"SUM(#REF!)","v":{"$error":"#REF!"}},{"$f":"SUM(#REF!)","v":{"$error":"#REF!"}},{"$f":"SUM(#REF!)","v":{"$error":"#REF!"}},{"$f":"SUM(#REF!)","v":{"$error":"#REF!"}},{"$f":"SUM(#REF!)","v":{"$error":"#REF!"}},{"$f":"SUM(#REF!)","v":{"$error":"#REF!"}},{"$f":"SUM(#REF!)","v":{"$error":"#REF!"}},{"$f":"SUM(#REF!)","v":{"$error":"#REF!"}},{"$f":"SUM(#REF!)","v":{"$error":"#REF!"}},{"$f":"SUM(#REF!)","v":{"$error":"#REF!"}},{"$f":"SUM(#REF!)","v":{"$error":"#REF!"}},{"$f":"SUM(#REF!)","v":{"$error":"#REF!"}},{"$f":"SUM(#REF!)","v":{"$error":"#REF!"}},{"$f":"SUM(#REF!)","v":{"$error":"#REF!"}},{"$f":"SUM(#REF!)","v":{"$error":"#REF!"}},{"$f":"SUM(#REF!)","v":{"$error":"#REF!"}},{"$f":"SUM(#REF!)","v":{"$error":"#REF!"}},{"$f":"SUM(#REF!)","v":{"$error":"#REF!"}},{"$f":"SUM(#REF!)","v":{"$error":"#REF!"}},{"$f":"SUM(#REF!)","v":{"$error":"#REF!"}},{"$f":"SUM(#REF!)","v":{"$error":"#REF!"}},{"$f":"SUM(#REF!)","v":{"$error":"#REF!"}},{"$f":"SUM(#REF!)","v":{"$error":"#REF!"}},{"$f":"SUM(#REF!)","v":{"$error":"#REF!"}},{"$f":"SUM(#REF!)","v":{"$error":"#REF!"}},{"$f":"SUM(#REF!)","v":{"$error":"#REF!"}},{"$f":"SUM(#REF!)","v":{"$error":"#REF!"}},{"$f":"SUM(#REF!)","v":{"$error":"#REF!"}},{"$f":"SUM(#REF!)","v":{"$error":"#REF!"}},{"$f":"SUM(#REF!)","v":{"$error":"#REF!"}},{"$f":"SUM(#REF!)","v":{"$error":"#REF!"}},{"$f":"SUM(#REF!)","v":{"$error":"#REF!"}},{"$f":"SUM(#REF!)","v":{"$error":"#REF!"}},{"$f":"SUM(#REF!)","v":{"$error":"#REF!"}},{"$f":"SUM(#REF!)","v":{"$error":"#REF!"}},{"$f":"SUM(#REF!)","v":{"$error":"#REF!"}},{"$f":"SUM(#REF!)","v":{"$error":"#REF!"}},{"$f":"SUM(#REF!)","v":{"$error":"#REF!"}},{"$f":"SUM(#REF!)","v":{"$error":"#REF!"}},{"$f":"SUM(#REF!)","v":{"$error":"#REF!"}},{"$f":"SUM(#REF!)","v":{"$error":"#REF!"}},{"$f":"SUM(#REF!)","v":{"$error":"#REF!"}},{"$f":"SUM(#REF!)","v":{"$error":"#REF!"}},{"$f":"SUM(#REF!)","v":{"$error":"#REF!"}},{"$f":"SUM(#REF!)","v":{"$error":"#REF!"}},{"$f":"SUM(#REF!)","v":{"$error":"#REF!"}},{"$f":"SUM(#REF!)","v":{"$error":"#REF!"}},{"$f":"SUM(#REF!)","v":{"$error":"#REF!"}},{"$f":"SUM(#REF!)","v":{"$error":"#REF!"}},{"$f":"SUM(#REF!)","v":{"$error":"#REF!"}},{"$f":"SUM(#REF!)","v":{"$error":"#REF!"}},{"$f":"SUM(#REF!)","v":{"$error":"#REF!"}},{"$f":"SUM(#REF!)","v":{"$error":"#REF!"}},{"$f":"SUM(#REF!)","v":{"$error":"#REF!"}},{"$f":"SUM(#REF!)","v":{"$error":"#REF!"}},{"$f":"SUM(#REF!)","v":{"$error":"#REF!"}},{"$f":"SUM(#REF!)","v":{"$error":"#REF!"}},{"$f":"SUM(#REF!)","v":{"$error":"#REF!"}},{"$f":"SUM(#REF!)","v":{"$error":"#REF!"}},{"$f":"SUM(#REF!)","v":{"$error":"#REF!"}},{"$f":"SUM(#REF!)","v":{"$error":"#REF!"}},{"$f":"SUM(#REF!)","v":{"$error":"#REF!"}},{"$f":"SUM(#REF!)","v":{"$error":"#REF!"}},{"$f":"SUM(#REF!)","v":{"$error":"#REF!"}},{"$f":"SUM(#REF!)","v":{"$error":"#REF!"}},{"$f":"SUM(#REF!)","v":{"$error":"#REF!"}},{"$f":"SUM(#REF!)","v":{"$error":"#REF!"}},{"$f":"SUM(#REF!)","v":{"$error":"#REF!"}},{"$f":"SUM(#REF!)","v":{"$error":"#REF!"}},{"$f":"SUM(#REF!)","v":{"$error":"#REF!"}},{"$f":"SUM(#REF!)","v":{"$error":"#REF!"}},{"$f":"SUM(#REF!)","v":{"$error":"#REF!"}},{"$f":"SUM(#REF!)","v":{"$error":"#REF!"}},{"$f":"SUM(#REF!)","v":{"$error":"#REF!"}},{"$f":"SUM(#REF!)","v":{"$error":"#REF!"}},{"$f":"SUM(#REF!)","v":{"$error":"#REF!"}},{"$f":"SUM(#REF!)","v":{"$error":"#REF!"}},{"$f":"SUM(#REF!)","v":{"$error":"#REF!"}},{"$f":"SUM(#REF!)","v":{"$error":"#REF!"}},{"$f":"SUM(#REF!)","v":{"$error":"#REF!"}},{"$f":"SUM(#REF!)","v":{"$error":"#REF!"}},{"$f":"SUM(#REF!)","v":{"$error":"#REF!"}},{"$f":"SUM(#REF!)","v":{"$error":"#REF!"}},{"$f":"SUM(#REF!)","v":{"$error":"#REF!"}},{"$f":"SUM(#REF!)","v":{"$error":"#REF!"}},{"$f":"SUM(#REF!)","v":{"$error":"#REF!"}},{"$f":"SUM(#REF!)","v":{"$error":"#REF!"}},{"$f":"SUM(#REF!)","v":{"$error":"#REF!"}},{"$f":"SUM(#REF!)","v":{"$error":"#REF!"}},{"$f":"SUM(#REF!)","v":{"$error":"#REF!"}},{"$f":"SUM(#REF!)","v":{"$error":"#REF!"}},{"$f":"SUM(#REF!)","v":{"$error":"#REF!"}},{"$f":"SUM(#REF!)","v":{"$error":"#REF!"}},{"$f":"SUM(#REF!)","v":{"$error":"#REF!"}},{"$f":"SUM(#REF!)","v":{"$error":"#REF!"}},{"$f":"SUM(#REF!)","v":{"$error":"#REF!"}},{"$f":"SUM(#REF!)","v":{"$error":"#REF!"}},{"$f":"SUM(#REF!)","v":{"$error":"#REF!"}},{"$f":"SUM(#REF!)","v":{"$error":"#REF!"}},{"$f":"SUM(#REF!)","v":{"$error":"#REF!"}},{"$f":"SUM(#REF!)","v":{"$error":"#REF!"}},{"$f":"SUM(#REF!)","v":{"$error":"#REF!"}},{"$f":"SUM(#REF!)","v":{"$error":"#REF!"}},{"$f":"SUM(#REF!)","v":{"$error":"#REF!"}},{"$f":"SUM(#REF!)","v":{"$error":"#REF!"}},{"$f":"SUM(#REF!)","v":{"$error":"#REF!"}},{"$f":"SUM(#REF!)","v":{"$error":"#REF!"}},{"$f":"SUM(#REF!)","v":{"$error":"#REF!"}},{"$f":"SUM(#REF!)","v":{"$error":"#REF!"}},{"$f":"SUM(#REF!)","v":{"$error":"#REF!"}},{"$f":"SUM(#REF!)","v":{"$error":"#REF!"}},{"$f":"SUM(#REF!)","v":{"$error":"#REF!"}},{"$f":"SUM(#REF!)","v":{"$error":"#REF!"}},{"$f":"SUM(#REF!)","v":{"$error":"#REF!"}},{"$f":"SUM(#REF!)","v":{"$error":"#REF!"}},{"$f":"SUM(#REF!)","v":{"$error":"#REF!"}},{"$f":"SUM(#REF!)","v":{"$error":"#REF!"}},{"$f":"SUM(#REF!)","v":{"$error":"#REF!"}},{"$f":"SUM(#REF!)","v":{"$error":"#REF!"}},{"$f":"SUM(#REF!)","v":{"$error":"#REF!"}},{"$f":"SUM(#REF!)","v":{"$error":"#REF!"}},{"$f":"SUM(#REF!)","v":{"$error":"#REF!"}},{"$f":"SUM(#REF!)","v":{"$error":"#REF!"}},{"$f":"SUM(#REF!)","v":{"$error":"#REF!"}},{"$f":"SUM(#REF!)","v":{"$error":"#REF!"}},{"$f":"SUM(#REF!)","v":{"$error":"#REF!"}},{"$f":"SUM(#REF!)","v":{"$error":"#REF!"}},{"$f":"SUM(#REF!)","v":{"$error":"#REF!"}},{"$f":"SUM(#REF!)","v":{"$error":"#REF!"}},{"$f":"SUM(#REF!)","v":{"$error":"#REF!"}},{"$f":"SUM(#REF!)","v":{"$error":"#REF!"}},{"$f":"SUM(#REF!)","v":{"$error":"#REF!"}},{"$f":"SUM(#REF!)","v":{"$error":"#REF!"}},{"$f":"SUM(#REF!)","v":{"$error":"#REF!"}},{"$f":"SUM(#REF!)","v":{"$error":"#REF!"}},{"$f":"SUM(#REF!)","v":{"$error":"#REF!"}},{"$f":"SUM(#REF!)","v":{"$error":"#REF!"}},{"$f":"SUM(#REF!)","v":{"$error":"#REF!"}},{"$f":"SUM(#REF!)","v":{"$error":"#REF!"}},{"$f":"SUM(#REF!)","v":{"$error":"#REF!"}},{"$f":"SUM(#REF!)","v":{"$error":"#REF!"}},{"$f":"SUM(#REF!)","v":{"$error":"#REF!"}},{"$f":"SUM(#REF!)","v":{"$error":"#REF!"}},{"$f":"SUM(#REF!)","v":{"$error":"#REF!"}},{"$f":"SUM(#REF!)","v":{"$error":"#REF!"}},{"$f":"SUM(#REF!)","v":{"$error":"#REF!"}},{"$f":"SUM(#REF!)","v":{"$error":"#REF!"}},{"$f":"SUM(#REF!)","v":{"$error":"#REF!"}},{"$f":"SUM(#REF!)","v":{"$error":"#REF!"}},{"$f":"SUM(#REF!)","v":{"$error":"#REF!"}},{"$f":"SUM(#REF!)","v":{"$error":"#REF!"}},{"$f":"SUM(#REF!)","v":{"$error":"#REF!"}},{"$f":"SUM(#REF!)","v":{"$error":"#REF!"}},{"$f":"SUM(#REF!)","v":{"$error":"#REF!"}},{"$f":"SUM(#REF!)","v":{"$error":"#REF!"}},{"$f":"SUM(#REF!)","v":{"$error":"#REF!"}},{"$f":"SUM(#REF!)","v":{"$error":"#REF!"}},{"$f":"SUM(#REF!)","v":{"$error":"#REF!"}},{"$f":"SUM(#REF!)","v":{"$error":"#REF!"}},{"$f":"SUM(#REF!)","v":{"$error":"#REF!"}},{"$f":"SUM(#REF!)","v":{"$error":"#REF!"}},{"$f":"SUM(#REF!)","v":{"$error":"#REF!"}},{"$f":"SUM(#REF!)","v":{"$error":"#REF!"}},{"$f":"SUM(#REF!)","v":{"$error":"#REF!"}},{"$f":"SUM(#REF!)","v":{"$error":"#REF!"}},{"$f":"SUM(#REF!)","v":{"$error":"#REF!"}},{"$f":"SUM(#REF!)","v":{"$error":"#REF!"}},{"$f":"SUM(#REF!)","v":{"$error":"#REF!"}},{"$f":"SUM(#REF!)","v":{"$error":"#REF!"}},{"$f":"SUM(#REF!)","v":{"$error":"#REF!"}},{"$f":"SUM(#REF!)","v":{"$error":"#REF!"}},{"$f":"SUM(#REF!)","v":{"$error":"#REF!"}},{"$f":"SUM(#REF!)","v":{"$error":"#REF!"}},{"$f":"SUM(#REF!)","v":{"$error":"#REF!"}},{"$f":"SUM(#REF!)","v":{"$error":"#REF!"}},{"$f":"SUM(#REF!)","v":{"$error":"#REF!"}},{"$f":"SUM(#REF!)","v":{"$error":"#REF!"}},{"$f":"SUM(#REF!)","v":{"$error":"#REF!"}},{"$f":"SUM(#REF!)","v":{"$error":"#REF!"}},{"$f":"SUM(#REF!)","v":{"$error":"#REF!"}},{"$f":"SUM(#REF!)","v":{"$error":"#REF!"}},{"$f":"SUM(#REF!)","v":{"$error":"#REF!"}},{"$f":"SUM(#REF!)","v":{"$error":"#REF!"}},{"$f":"SUM(#REF!)","v":{"$error":"#REF!"}},{"$f":"SUM(#REF!)","v":{"$error":"#REF!"}},{"$f":"SUM(#REF!)","v":{"$error":"#REF!"}},{"$f":"SUM(#REF!)","v":{"$error":"#REF!"}},{"$f":"SUM(#REF!)","v":{"$error":"#REF!"}},{"$f":"SUM(#REF!)","v":{"$error":"#REF!"}},{"$f":"SUM(#REF!)","v":{"$error":"#REF!"}},{"$f":"SUM(#REF!)","v":{"$error":"#REF!"}},{"$f":"SUM(#REF!)","v":{"$error":"#REF!"}},{"$f":"SUM(#REF!)","v":{"$error":"#REF!"}},{"$f":"SUM(#REF!)","v":{"$error":"#REF!"}},{"$f":"SUM(#REF!)","v":{"$error":"#REF!"}},{"$f":"SUM(#REF!)","v":{"$error":"#REF!"}},{"$f":"SUM(#REF!)","v":{"$error":"#REF!"}},{"$f":"SUM(#REF!)","v":{"$error":"#REF!"}},{"$f":"SUM(#REF!)","v":{"$error":"#REF!"}},{"$f":"SUM(#REF!)","v":{"$error":"#REF!"}},{"$f":"SUM(#REF!)","v":{"$error":"#REF!"}},{"$f":"SUM(#REF!)","v":{"$error":"#REF!"}},{"$f":"SUM(#REF!)","v":{"$error":"#REF!"}},{"$f":"SUM(#REF!)","v":{"$error":"#REF!"}},{"$f":"SUM(#REF!)","v":{"$error":"#REF!"}},{"$f":"SUM(#REF!)","v":{"$error":"#REF!"}},{"$f":"SUM(#REF!)","v":{"$error":"#REF!"}},{"$f":"SUM(#REF!)","v":{"$error":"#REF!"}},{"$f":"SUM(#REF!)","v":{"$error":"#REF!"}},{"$f":"SUM(#REF!)","v":{"$error":"#REF!"}},{"$f":"SUM(#REF!)","v":{"$error":"#REF!"}},{"$f":"SUM(#REF!)","v":{"$error":"#REF!"}},{"$f":"SUM(#REF!)","v":{"$error":"#REF!"}},{"$f":"SUM(#REF!)","v":{"$error":"#REF!"}},{"$f":"SUM(#REF!)","v":{"$error":"#REF!"}},{"$f":"SUM(#REF!)","v":{"$error":"#REF!"}},{"$f":"SUM(#REF!)","v":{"$error":"#REF!"}},{"$f":"SUM(#REF!)","v":{"$error":"#REF!"}},{"$f":"SUM(#REF!)","v":{"$error":"#REF!"}},{"$f":"SUM(#REF!)","v":{"$error":"#REF!"}},{"$f":"SUM(#REF!)","v":{"$error":"#REF!"}},{"$f":"SUM(#REF!)","v":{"$error":"#REF!"}},{"$f":"SUM(#REF!)","v":{"$error":"#REF!"}},{"$f":"SUM(#REF!)","v":{"$error":"#REF!"}},{"$f":"SUM(#REF!)","v":{"$error":"#REF!"}},{"$f":"SUM(#REF!)","v":{"$error":"#REF!"}},{"$f":"SUM(#REF!)","v":{"$error":"#REF!"}},{"$f":"SUM(#REF!)","v":{"$error":"#REF!"}},{"$f":"SUM(#REF!)","v":{"$error":"#REF!"}},{"$f":"SUM(#REF!)","v":{"$error":"#REF!"}},{"$f":"SUM(#REF!)","v":{"$error":"#REF!"}},{"$f":"SUM(#REF!)","v":{"$error":"#REF!"}},{"$f":"SUM(#REF!)","v":{"$error":"#REF!"}},{"$f":"SUM(#REF!)","v":{"$error":"#REF!"}},{"$f":"SUM(#REF!)","v":{"$error":"#REF!"}},{"$f":"SUM(#REF!)","v":{"$error":"#REF!"}},{"$f":"SUM(#REF!)","v":{"$error":"#REF!"}},{"$f":"SUM(#REF!)","v":{"$error":"#REF!"}},{"$f":"SUM(#REF!)","v":{"$error":"#REF!"}},{"$f":"SUM(#REF!)","v":{"$error":"#REF!"}},{"$f":"SUM(#REF!)","v":{"$error":"#REF!"}},{"$f":"SUM(#REF!)","v":{"$error":"#REF!"}},{"$f":"SUM(#REF!)","v":{"$error":"#REF!"}},{"$f":"SUM(#REF!)","v":{"$error":"#REF!"}},{"$f":"SUM(#REF!)","v":{"$error":"#REF!"}},{"$f":"SUM(#REF!)","v":{"$error":"#REF!"}},{"$f":"SUM(#REF!)","v":{"$error":"#REF!"}},{"$f":"SUM(#REF!)","v":{"$error":"#REF!"}},{"$f":"SUM(#REF!)","v":{"$error":"#REF!"}},{"$f":"SUM(#REF!)","v":{"$error":"#REF!"}},{"$f":"SUM(#REF!)","v":{"$error":"#REF!"}},{"$f":"SUM(#REF!)","v":{"$error":"#REF!"}},{"$f":"SUM(#REF!)","v":{"$error":"#REF!"}},{"$f":"SUM(#REF!)","v":{"$error":"#REF!"}},{"$f":"SUM(#REF!)","v":{"$error":"#REF!"}},{"$f":"SUM(#REF!)","v":{"$error":"#REF!"}},{"$f":"SUM(#REF!)","v":{"$error":"#REF!"}},{"$f":"SUM(#REF!)","v":{"$error":"#REF!"}},{"$f":"SUM(#REF!)","v":{"$error":"#REF!"}},{"$f":"SUM(#REF!)","v":{"$error":"#REF!"}},{"$f":"SUM(#REF!)","v":{"$error":"#REF!"}},{"$f":"SUM(#REF!)","v":{"$error":"#REF!"}},{"$f":"SUM(#REF!)","v":{"$error":"#REF!"}},{"$f":"SUM(#REF!)","v":{"$error":"#REF!"}},{"$f":"SUM(#REF!)","v":{"$error":"#REF!"}},{"$f":"SUM(#REF!)","v":{"$error":"#REF!"}},{"$f":"SUM(#REF!)","v":{"$error":"#REF!"}},{"$f":"SUM(#REF!)","v":{"$error":"#REF!"}},{"$f":"SUM(#REF!)","v":{"$error":"#REF!"}},{"$f":"SUM(#REF!)","v":{"$error":"#REF!"}},{"$f":"SUM(#REF!)","v":{"$error":"#REF!"}},{"$f":"SUM(#REF!)","v":{"$error":"#REF!"}},{"$f":"SUM(#REF!)","v":{"$error":"#REF!"}},{"$f":"SUM(#REF!)","v":{"$error":"#REF!"}},{"$f":"SUM(#REF!)","v":{"$error":"#REF!"}},{"$f":"SUM(#REF!)","v":{"$error":"#REF!"}},{"$f":"SUM(#REF!)","v":{"$error":"#REF!"}},{"$f":"SUM(#REF!)","v":{"$error":"#REF!"}},{"$f":"SUM(#REF!)","v":{"$error":"#REF!"}},{"$f":"SUM(#REF!)","v":{"$error":"#REF!"}},{"$f":"SUM(#REF!)","v":{"$error":"#REF!"}},{"$f":"SUM(#REF!)","v":{"$error":"#REF!"}},{"$f":"SUM(#REF!)","v":{"$error":"#REF!"}},{"$f":"SUM(#REF!)","v":{"$error":"#REF!"}},{"$f":"SUM(#REF!)","v":{"$error":"#REF!"}},{"$f":"SUM(#REF!)","v":{"$error":"#REF!"}},{"$f":"SUM(#REF!)","v":{"$error":"#REF!"}},{"$f":"SUM(#REF!)","v":{"$error":"#REF!"}},{"$f":"SUM(#REF!)","v":{"$error":"#REF!"}},{"$f":"SUM(#REF!)","v":{"$error":"#REF!"}},{"$f":"SUM(#REF!)","v":{"$error":"#REF!"}},{"$f":"SUM(#REF!)","v":{"$error":"#REF!"}},{"$f":"SUM(#REF!)","v":{"$error":"#REF!"}},{"$f":"SUM(#REF!)","v":{"$error":"#REF!"}},{"$f":"SUM(#REF!)","v":{"$error":"#REF!"}},{"$f":"SUM(#REF!)","v":{"$error":"#REF!"}},{"$f":"SUM(#REF!)","v":{"$error":"#REF!"}},{"$f":"SUM(#REF!)","v":{"$error":"#REF!"}},{"$f":"SUM(#REF!)","v":{"$error":"#REF!"}},{"$f":"SUM(#REF!)","v":{"$error":"#REF!"}},{"$f":"SUM(#REF!)","v":{"$error":"#REF!"}},{"$f":"SUM(#REF!)","v":{"$error":"#REF!"}},{"$f":"SUM(#REF!)","v":{"$error":"#REF!"}},{"$f":"SUM(#REF!)","v":{"$error":"#REF!"}},{"$f":"SUM(#REF!)","v":{"$error":"#REF!"}},{"$f":"SUM(#REF!)","v":{"$error":"#REF!"}},{"$f":"SUM(#REF!)","v":{"$error":"#REF!"}},{"$f":"SUM(#REF!)","v":{"$error":"#REF!"}},{"$f":"SUM(#REF!)","v":{"$error":"#REF!"}},{"$f":"SUM(#REF!)","v":{"$error":"#REF!"}},{"$f":"SUM(#REF!)","v":{"$error":"#REF!"}},{"$f":"SUM(#REF!)","v":{"$error":"#REF!"}},{"$f":"SUM(#REF!)","v":{"$error":"#REF!"}},{"$f":"SUM(#REF!)","v":{"$error":"#REF!"}},{"$f":"SUM(#REF!)","v":{"$error":"#REF!"}},{"$f":"SUM(#REF!)","v":{"$error":"#REF!"}},{"$f":"SUM(#REF!)","v":{"$error":"#REF!"}},{"$f":"SUM(#REF!)","v":{"$error":"#REF!"}},{"$f":"SUM(#REF!)","v":{"$error":"#REF!"}},{"$f":"SUM(#REF!)","v":{"$error":"#REF!"}},{"$f":"SUM(#REF!)","v":{"$error":"#REF!"}},{"$f":"SUM(#REF!)","v":{"$error":"#REF!"}},{"$f":"SUM(#REF!)","v":{"$error":"#REF!"}},{"$f":"SUM(#REF!)","v":{"$error":"#REF!"}},{"$f":"SUM(#REF!)","v":{"$error":"#REF!"}},{"$f":"SUM(#REF!)","v":{"$error":"#REF!"}},{"$f":"SUM(#REF!)","v":{"$error":"#REF!"}},{"$f":"SUM(#REF!)","v":{"$error":"#REF!"}},{"$f":"SUM(#REF!)","v":{"$error":"#REF!"}},{"$f":"SUM(#REF!)","v":{"$error":"#REF!"}},{"$f":"SUM(#REF!)","v":{"$error":"#REF!"}},{"$f":"SUM(#REF!)","v":{"$error":"#REF!"}},{"$f":"SUM(#REF!)","v":{"$error":"#REF!"}},{"$f":"SUM(#REF!)","v":{"$error":"#REF!"}},{"$f":"SUM(#REF!)","v":{"$error":"#REF!"}},{"$f":"SUM(#REF!)","v":{"$error":"#REF!"}},{"$f":"SUM(#REF!)","v":{"$error":"#REF!"}},{"$f":"SUM(#REF!)","v":{"$error":"#REF!"}},{"$f":"SUM(#REF!)","v":{"$error":"#REF!"}},{"$f":"SUM(#REF!)","v":{"$error":"#REF!"}},{"$f":"SUM(#REF!)","v":{"$error":"#REF!"}},{"$f":"SUM(#REF!)","v":{"$error":"#REF!"}},{"$f":"SUM(#REF!)","v":{"$error":"#REF!"}},{"$f":"SUM(#REF!)","v":{"$error":"#REF!"}},{"$f":"SUM(#REF!)","v":{"$error":"#REF!"}},{"$f":"SUM(#REF!)","v":{"$error":"#REF!"}},{"$f":"SUM(#REF!)","v":{"$error":"#REF!"}},{"$f":"SUM(#REF!)","v":{"$error":"#REF!"}},{"$f":"SUM(#REF!)","v":{"$error":"#REF!"}},{"$f":"SUM(#REF!)","v":{"$error":"#REF!"}},{"$f":"SUM(#REF!)","v":{"$error":"#REF!"}},{"$f":"SUM(#REF!)","v":{"$error":"#REF!"}},{"$f":"SUM(#REF!)","v":{"$error":"#REF!"}},{"$f":"SUM(#REF!)","v":{"$error":"#REF!"}},{"$f":"SUM(#REF!)","v":{"$error":"#REF!"}},{"$f":"SUM(#REF!)","v":{"$error":"#REF!"}},{"$f":"SUM(#REF!)","v":{"$error":"#REF!"}},{"$f":"SUM(#REF!)","v":{"$error":"#REF!"}},{"$f":"SUM(#REF!)","v":{"$error":"#REF!"}},{"$f":"SUM(#REF!)","v":{"$error":"#REF!"}},{"$f":"SUM(#REF!)","v":{"$error":"#REF!"}},{"$f":"SUM(#REF!)","v":{"$error":"#REF!"}},{"$f":"SUM(#REF!)","v":{"$error":"#REF!"}},{"$f":"SUM(#REF!)","v":{"$error":"#REF!"}},{"$f":"SUM(#REF!)","v":{"$error":"#REF!"}},{"$f":"SUM(#REF!)","v":{"$error":"#REF!"}},{"$f":"SUM(#REF!)","v":{"$error":"#REF!"}},{"$f":"SUM(#REF!)","v":{"$error":"#REF!"}},{"$f":"SUM(#REF!)","v":{"$error":"#REF!"}},{"$f":"SUM(#REF!)","v":{"$error":"#REF!"}},{"$f":"SUM(#REF!)","v":{"$error":"#REF!"}},{"$f":"SUM(#REF!)","v":{"$error":"#REF!"}},{"$f":"SUM(#REF!)","v":{"$error":"#REF!"}},{"$f":"SUM(#REF!)","v":{"$error":"#REF!"}},{"$f":"SUM(#REF!)","v":{"$error":"#REF!"}},{"$f":"SUM(#REF!)","v":{"$error":"#REF!"}},{"$f":"SUM(#REF!)","v":{"$error":"#REF!"}},{"$f":"SUM(#REF!)","v":{"$error":"#REF!"}},{"$f":"SUM(#REF!)","v":{"$error":"#REF!"}},{"$f":"SUM(#REF!)","v":{"$error":"#REF!"}},{"$f":"SUM(#REF!)","v":{"$error":"#REF!"}},{"$f":"SUM(#REF!)","v":{"$error":"#REF!"}},{"$f":"SUM(#REF!)","v":{"$error":"#REF!"}},{"$f":"SUM(#REF!)","v":{"$error":"#REF!"}},{"$f":"SUM(#REF!)","v":{"$error":"#REF!"}},{"$f":"SUM(#REF!)","v":{"$error":"#REF!"}},{"$f":"SUM(#REF!)","v":{"$error":"#REF!"}},{"$f":"SUM(#REF!)","v":{"$error":"#REF!"}},{"$f":"SUM(#REF!)","v":{"$error":"#REF!"}},{"$f":"SUM(#REF!)","v":{"$error":"#REF!"}},{"$f":"SUM(#REF!)","v":{"$error":"#REF!"}},{"$f":"SUM(#REF!)","v":{"$error":"#REF!"}},{"$f":"SUM(#REF!)","v":{"$error":"#REF!"}},{"$f":"SUM(#REF!)","v":{"$error":"#REF!"}},{"$f":"SUM(#REF!)","v":{"$error":"#REF!"}},{"$f":"SUM(#REF!)","v":{"$error":"#REF!"}},{"$f":"SUM(#REF!)","v":{"$error":"#REF!"}},{"$f":"SUM(#REF!)","v":{"$error":"#REF!"}},{"$f":"SUM(#REF!)","v":{"$error":"#REF!"}},{"$f":"SUM(#REF!)","v":{"$error":"#REF!"}},{"$f":"SUM(#REF!)","v":{"$error":"#REF!"}},{"$f":"SUM(#REF!)","v":{"$error":"#REF!"}},{"$f":"SUM(#REF!)","v":{"$error":"#REF!"}},{"$f":"SUM(#REF!)","v":{"$error":"#REF!"}},{"$f":"SUM(#REF!)","v":{"$error":"#REF!"}},{"$f":"SUM(#REF!)","v":{"$error":"#REF!"}},{"$f":"SUM(#REF!)","v":{"$error":"#REF!"}},{"$f":"SUM(#REF!)","v":{"$error":"#REF!"}},{"$f":"SUM(#REF!)","v":{"$error":"#REF!"}},{"$f":"SUM(#REF!)","v":{"$error":"#REF!"}},{"$f":"SUM(#REF!)","v":{"$error":"#REF!"}},{"$f":"SUM(#REF!)","v":{"$error":"#REF!"}},{"$f":"SUM(#REF!)","v":{"$error":"#REF!"}},{"$f":"SUM(#REF!)","v":{"$error":"#REF!"}},{"$f":"SUM(#REF!)","v":{"$error":"#REF!"}},{"$f":"SUM(#REF!)","v":{"$error":"#REF!"}},{"$f":"SUM(#REF!)","v":{"$error":"#REF!"}},{"$f":"SUM(#REF!)","v":{"$error":"#REF!"}},{"$f":"SUM(#REF!)","v":{"$error":"#REF!"}},{"$f":"SUM(#REF!)","v":{"$error":"#REF!"}},{"$f":"SUM(#REF!)","v":{"$error":"#REF!"}},{"$f":"SUM(#REF!)","v":{"$error":"#REF!"}},{"$f":"SUM(#REF!)","v":{"$error":"#REF!"}},{"$f":"SUM(#REF!)","v":{"$error":"#REF!"}},{"$f":"SUM(#REF!)","v":{"$error":"#REF!"}},{"$f":"SUM(#REF!)","v":{"$error":"#REF!"}},{"$f":"SUM(#REF!)","v":{"$error":"#REF!"}},{"$f":"SUM(#REF!)","v":{"$error":"#REF!"}},{"$f":"SUM(#REF!)","v":{"$error":"#REF!"}},{"$f":"SUM(#REF!)","v":{"$error":"#REF!"}},{"$f":"SUM(#REF!)","v":{"$error":"#REF!"}},{"$f":"SUM(#REF!)","v":{"$error":"#REF!"}},{"$f":"SUM(#REF!)","v":{"$error":"#REF!"}},{"$f":"SUM(#REF!)","v":{"$error":"#REF!"}},{"$f":"SUM(#REF!)","v":{"$error":"#REF!"}},{"$f":"SUM(#REF!)","v":{"$error":"#REF!"}},{"$f":"SUM(#REF!)","v":{"$error":"#REF!"}},{"$f":"SUM(#REF!)","v":{"$error":"#REF!"}},{"$f":"SUM(#REF!)","v":{"$error":"#REF!"}},{"$f":"SUM(#REF!)","v":{"$error":"#REF!"}},{"$f":"SUM(#REF!)","v":{"$error":"#REF!"}},{"$f":"SUM(#REF!)","v":{"$error":"#REF!"}},{"$f":"SUM(#REF!)","v":{"$error":"#REF!"}},{"$f":"SUM(#REF!)","v":{"$error":"#REF!"}},{"$f":"SUM(#REF!)","v":{"$error":"#REF!"}},{"$f":"SUM(#REF!)","v":{"$error":"#REF!"}},{"$f":"SUM(#REF!)","v":{"$error":"#REF!"}},{"$f":"SUM(#REF!)","v":{"$error":"#REF!"}},{"$f":"SUM(#REF!)","v":{"$error":"#REF!"}},{"$f":"SUM(#REF!)","v":{"$error":"#REF!"}},{"$f":"SUM(#REF!)","v":{"$error":"#REF!"}},{"$f":"SUM(#REF!)","v":{"$error":"#REF!"}},{"$f":"SUM(#REF!)","v":{"$error":"#REF!"}},{"$f":"SUM(#REF!)","v":{"$error":"#REF!"}},{"$f":"SUM(#REF!)","v":{"$error":"#REF!"}},{"$f":"SUM(#REF!)","v":{"$error":"#REF!"}},{"$f":"SUM(#REF!)","v":{"$error":"#REF!"}},{"$f":"SUM(#REF!)","v":{"$error":"#REF!"}},{"$f":"SUM(#REF!)","v":{"$error":"#REF!"}},{"$f":"SUM(#REF!)","v":{"$error":"#REF!"}},{"$f":"SUM(#REF!)","v":{"$error":"#REF!"}},{"$f":"SUM(#REF!)","v":{"$error":"#REF!"}},{"$f":"SUM(#REF!)","v":{"$error":"#REF!"}},{"$f":"SUM(#REF!)","v":{"$error":"#REF!"}},{"$f":"SUM(#REF!)","v":{"$error":"#REF!"}},{"$f":"SUM(#REF!)","v":{"$error":"#REF!"}},{"$f":"SUM(#REF!)","v":{"$error":"#REF!"}},{"$f":"SUM(#REF!)","v":{"$error":"#REF!"}},{"$f":"SUM(#REF!)","v":{"$error":"#REF!"}},{"$f":"SUM(#REF!)","v":{"$error":"#REF!"}},{"$f":"SUM(#REF!)","v":{"$error":"#REF!"}},{"$f":"SUM(#REF!)","v":{"$error":"#REF!"}},{"$f":"SUM(#REF!)","v":{"$error":"#REF!"}},{"$f":"SUM(#REF!)","v":{"$error":"#REF!"}},{"$f":"SUM(#REF!)","v":{"$error":"#REF!"}},{"$f":"SUM(#REF!)","v":{"$error":"#REF!"}},{"$f":"SUM(#REF!)","v":{"$error":"#REF!"}},{"$f":"SUM(#REF!)","v":{"$error":"#REF!"}},{"$f":"SUM(#REF!)","v":{"$error":"#REF!"}},{"$f":"SUM(#REF!)","v":{"$error":"#REF!"}},{"$f":"SUM(#REF!)","v":{"$error":"#REF!"}},{"$f":"SUM(#REF!)","v":{"$error":"#REF!"}},{"$f":"SUM(#REF!)","v":{"$error":"#REF!"}},{"$f":"SUM(#REF!)","v":{"$error":"#REF!"}},{"$f":"SUM(#REF!)","v":{"$error":"#REF!"}},{"$f":"SUM(#REF!)","v":{"$error":"#REF!"}},{"$f":"SUM(#REF!)","v":{"$error":"#REF!"}},{"$f":"SUM(#REF!)","v":{"$error":"#REF!"}},{"$f":"SUM(#REF!)","v":{"$error":"#REF!"}},{"$f":"SUM(#REF!)","v":{"$error":"#REF!"}},{"$f":"SUM(#REF!)","v":{"$error":"#REF!"}},{"$f":"SUM(#REF!)","v":{"$error":"#REF!"}},{"$f":"SUM(#REF!)","v":{"$error":"#REF!"}},{"$f":"SUM(#REF!)","v":{"$error":"#REF!"}},{"$f":"SUM(#REF!)","v":{"$error":"#REF!"}},{"$f":"SUM(#REF!)","v":{"$error":"#REF!"}},{"$f":"SUM(#REF!)","v":{"$error":"#REF!"}},{"$f":"SUM(#REF!)","v":{"$error":"#REF!"}},{"$f":"SUM(#REF!)","v":{"$error":"#REF!"}},{"$f":"SUM(#REF!)","v":{"$error":"#REF!"}},{"$f":"SUM(#REF!)","v":{"$error":"#REF!"}},{"$f":"SUM(#REF!)","v":{"$error":"#REF!"}},{"$f":"SUM(#REF!)","v":{"$error":"#REF!"}},{"$f":"SUM(#REF!)","v":{"$error":"#REF!"}},{"$f":"SUM(#REF!)","v":{"$error":"#REF!"}},{"$f":"SUM(#REF!)","v":{"$error":"#REF!"}},{"$f":"SUM(#REF!)","v":{"$error":"#REF!"}},{"$f":"SUM(#REF!)","v":{"$error":"#REF!"}},{"$f":"SUM(#REF!)","v":{"$error":"#REF!"}},{"$f":"SUM(#REF!)","v":{"$error":"#REF!"}},{"$f":"SUM(#REF!)","v":{"$error":"#REF!"}},{"$f":"SUM(#REF!)","v":{"$error":"#REF!"}},{"$f":"SUM(#REF!)","v":{"$error":"#REF!"}},{"$f":"SUM(#REF!)","v":{"$error":"#REF!"}},{"$f":"SUM(#REF!)","v":{"$error":"#REF!"}},{"$f":"SUM(#REF!)","v":{"$error":"#REF!"}},{"$f":"SUM(#REF!)","v":{"$error":"#REF!"}},{"$f":"SUM(#REF!)","v":{"$error":"#REF!"}},{"$f":"SUM(#REF!)","v":{"$error":"#REF!"}},{"$f":"SUM(#REF!)","v":{"$error":"#REF!"}},{"$f":"SUM(#REF!)","v":{"$error":"#REF!"}},{"$f":"SUM(#REF!)","v":{"$error":"#REF!"}},{"$f":"SUM(#REF!)","v":{"$error":"#REF!"}},{"$f":"SUM(#REF!)","v":{"$error":"#REF!"}},{"$f":"SUM(#REF!)","v":{"$error":"#REF!"}},{"$f":"SUM(#REF!)","v":{"$error":"#REF!"}},{"$f":"SUM(#REF!)","v":{"$error":"#REF!"}},{"$f":"SUM(#REF!)","v":{"$error":"#REF!"}},{"$f":"SUM(#REF!)","v":{"$error":"#REF!"}},{"$f":"SUM(#REF!)","v":{"$error":"#REF!"}},{"$f":"SUM(#REF!)","v":{"$error":"#REF!"}},{"$f":"SUM(#REF!)","v":{"$error":"#REF!"}},{"$f":"SUM(#REF!)","v":{"$error":"#REF!"}},{"$f":"SUM(#REF!)","v":{"$error":"#REF!"}},{"$f":"SUM(#REF!)","v":{"$error":"#REF!"}},{"$f":"SUM(#REF!)","v":{"$error":"#REF!"}},{"$f":"SUM(#REF!)","v":{"$error":"#REF!"}},{"$f":"SUM(#REF!)","v":{"$error":"#REF!"}},{"$f":"SUM(#REF!)","v":{"$error":"#REF!"}},{"$f":"SUM(#REF!)","v":{"$error":"#REF!"}},{"$f":"SUM(#REF!)","v":{"$error":"#REF!"}},{"$f":"SUM(#REF!)","v":{"$error":"#REF!"}},{"$f":"SUM(#REF!)","v":{"$error":"#REF!"}},{"$f":"SUM(#REF!)","v":{"$error":"#REF!"}},{"$f":"SUM(#REF!)","v":{"$error":"#REF!"}},{"$f":"SUM(#REF!)","v":{"$error":"#REF!"}},{"$f":"SUM(#REF!)","v":{"$error":"#REF!"}},{"$f":"SUM(#REF!)","v":{"$error":"#REF!"}},{"$f":"SUM(#REF!)","v":{"$error":"#REF!"}},{"$f":"SUM(#REF!)","v":{"$error":"#REF!"}},{"$f":"SUM(#REF!)","v":{"$error":"#REF!"}},{"$f":"SUM(#REF!)","v":{"$error":"#REF!"}},{"$f":"SUM(#REF!)","v":{"$error":"#REF!"}},{"$f":"SUM(#REF!)","v":{"$error":"#REF!"}},{"$f":"SUM(#REF!)","v":{"$error":"#REF!"}},{"$f":"SUM(#REF!)","v":{"$error":"#REF!"}},{"$f":"SUM(#REF!)","v":{"$error":"#REF!"}},{"$f":"SUM(#REF!)","v":{"$error":"#REF!"}},{"$f":"SUM(#REF!)","v":{"$error":"#REF!"}},{"$f":"SUM(#REF!)","v":{"$error":"#REF!"}},{"$f":"SUM(#REF!)","v":{"$error":"#REF!"}},{"$f":"SUM(#REF!)","v":{"$error":"#REF!"}},{"$f":"SUM(#REF!)","v":{"$error":"#REF!"}},{"$f":"SUM(#REF!)","v":{"$error":"#REF!"}},{"$f":"SUM(#REF!)","v":{"$error":"#REF!"}},{"$f":"SUM(#REF!)","v":{"$error":"#REF!"}},{"$f":"SUM(#REF!)","v":{"$error":"#REF!"}},{"$f":"SUM(#REF!)","v":{"$error":"#REF!"}},{"$f":"SUM(#REF!)","v":{"$error":"#REF!"}},{"$f":"SUM(#REF!)","v":{"$error":"#REF!"}},{"$f":"SUM(#REF!)","v":{"$error":"#REF!"}},{"$f":"SUM(#REF!)","v":{"$error":"#REF!"}},{"$f":"SUM(#REF!)","v":{"$error":"#REF!"}},{"$f":"SUM(#REF!)","v":{"$error":"#REF!"}},{"$f":"SUM(#REF!)","v":{"$error":"#REF!"}},{"$f":"SUM(#REF!)","v":{"$error":"#REF!"}},{"$f":"SUM(#REF!)","v":{"$error":"#REF!"}},{"$f":"SUM(#REF!)","v":{"$error":"#REF!"}},{"$f":"SUM(#REF!)","v":{"$error":"#REF!"}},{"$f":"SUM(#REF!)","v":{"$error":"#REF!"}},{"$f":"SUM(#REF!)","v":{"$error":"#REF!"}},{"$f":"SUM(#REF!)","v":{"$error":"#REF!"}},{"$f":"SUM(#REF!)","v":{"$error":"#REF!"}},{"$f":"SUM(#REF!)","v":{"$error":"#REF!"}},{"$f":"SUM(#REF!)","v":{"$error":"#REF!"}},{"$f":"SUM(#REF!)","v":{"$error":"#REF!"}},{"$f":"SUM(#REF!)","v":{"$error":"#REF!"}},{"$f":"SUM(#REF!)","v":{"$error":"#REF!"}},{"$f":"SUM(#REF!)","v":{"$error":"#REF!"}},{"$f":"SUM(#REF!)","v":{"$error":"#REF!"}},{"$f":"SUM(#REF!)","v":{"$error":"#REF!"}},{"$f":"SUM(#REF!)","v":{"$error":"#REF!"}},{"$f":"SUM(#REF!)","v":{"$error":"#REF!"}},{"$f":"SUM(#REF!)","v":{"$error":"#REF!"}},{"$f":"SUM(#REF!)","v":{"$error":"#REF!"}},{"$f":"SUM(#REF!)","v":{"$error":"#REF!"}},{"$f":"SUM(#REF!)","v":{"$error":"#REF!"}},{"$f":"SUM(#REF!)","v":{"$error":"#REF!"}},{"$f":"SUM(#REF!)","v":{"$error":"#REF!"}},{"$f":"SUM(#REF!)","v":{"$error":"#REF!"}},{"$f":"SUM(#REF!)","v":{"$error":"#REF!"}},{"$f":"SUM(#REF!)","v":{"$error":"#REF!"}},{"$f":"SUM(#REF!)","v":{"$error":"#REF!"}},{"$f":"SUM(#REF!)","v":{"$error":"#REF!"}},{"$f":"SUM(#REF!)","v":{"$error":"#REF!"}},{"$f":"SUM(#REF!)","v":{"$error":"#REF!"}},{"$f":"SUM(#REF!)","v":{"$error":"#REF!"}},{"$f":"SUM(#REF!)","v":{"$error":"#REF!"}},{"$f":"SUM(#REF!)","v":{"$error":"#REF!"}},{"$f":"SUM(#REF!)","v":{"$error":"#REF!"}},{"$f":"SUM(#REF!)","v":{"$error":"#REF!"}},{"$f":"SUM(#REF!)","v":{"$error":"#REF!"}},{"$f":"SUM(#REF!)","v":{"$error":"#REF!"}},{"$f":"SUM(#REF!)","v":{"$error":"#REF!"}},{"$f":"SUM(#REF!)","v":{"$error":"#REF!"}},{"$f":"SUM(#REF!)","v":{"$error":"#REF!"}},{"$f":"SUM(#REF!)","v":{"$error":"#REF!"}},{"$f":"SUM(#REF!)","v":{"$error":"#REF!"}},{"$f":"SUM(#REF!)","v":{"$error":"#REF!"}},{"$f":"SUM(#REF!)","v":{"$error":"#REF!"}},{"$f":"SUM(#REF!)","v":{"$error":"#REF!"}},{"$f":"SUM(#REF!)","v":{"$error":"#REF!"}},{"$f":"SUM(#REF!)","v":{"$error":"#REF!"}},{"$f":"SUM(#REF!)","v":{"$error":"#REF!"}},{"$f":"SUM(#REF!)","v":{"$error":"#REF!"}},{"$f":"SUM(#REF!)","v":{"$error":"#REF!"}},{"$f":"SUM(#REF!)","v":{"$error":"#REF!"}},{"$f":"SUM(#REF!)","v":{"$error":"#REF!"}},{"$f":"SUM(#REF!)","v":{"$error":"#REF!"}},{"$f":"SUM(#REF!)","v":{"$error":"#REF!"}},{"$f":"SUM(#REF!)","v":{"$error":"#REF!"}},{"$f":"SUM(#REF!)","v":{"$error":"#REF!"}},{"$f":"SUM(#REF!)","v":{"$error":"#REF!"}},{"$f":"SUM(#REF!)","v":{"$error":"#REF!"}},{"$f":"SUM(#REF!)","v":{"$error":"#REF!"}},{"$f":"SUM(#REF!)","v":{"$error":"#REF!"}},{"$f":"SUM(#REF!)","v":{"$error":"#REF!"}},{"$f":"SUM(#REF!)","v":{"$error":"#REF!"}},{"$f":"SUM(#REF!)","v":{"$error":"#REF!"}},{"$f":"SUM(#REF!)","v":{"$error":"#REF!"}},{"$f":"SUM(#REF!)","v":{"$error":"#REF!"}},{"$f":"SUM(#REF!)","v":{"$error":"#REF!"}},{"$f":"SUM(#REF!)","v":{"$error":"#REF!"}},{"$f":"SUM(#REF!)","v":{"$error":"#REF!"}},{"$f":"SUM(#REF!)","v":{"$error":"#REF!"}},{"$f":"SUM(#REF!)","v":{"$error":"#REF!"}},{"$f":"SUM(#REF!)","v":{"$error":"#REF!"}},{"$f":"SUM(#REF!)","v":{"$error":"#REF!"}},{"$f":"SUM(#REF!)","v":{"$error":"#REF!"}},{"$f":"SUM(#REF!)","v":{"$error":"#REF!"}},{"$f":"SUM(#REF!)","v":{"$error":"#REF!"}},{"$f":"SUM(#REF!)","v":{"$error":"#REF!"}},{"$f":"SUM(#REF!)","v":{"$error":"#REF!"}},{"$f":"SUM(#REF!)","v":{"$error":"#REF!"}},{"$f":"SUM(#REF!)","v":{"$error":"#REF!"}},{"$f":"SUM(#REF!)","v":{"$error":"#REF!"}},{"$f":"SUM(#REF!)","v":{"$error":"#REF!"}},{"$f":"SUM(#REF!)","v":{"$error":"#REF!"}},{"$f":"SUM(#REF!)","v":{"$error":"#REF!"}},{"$f":"SUM(#REF!)","v":{"$error":"#REF!"}},{"$f":"SUM(#REF!)","v":{"$error":"#REF!"}},{"$f":"SUM(#REF!)","v":{"$error":"#REF!"}},{"$f":"SUM(#REF!)","v":{"$error":"#REF!"}},{"$f":"SUM(#REF!)","v":{"$error":"#REF!"}},{"$f":"SUM(#REF!)","v":{"$error":"#REF!"}},{"$f":"SUM(#REF!)","v":{"$error":"#REF!"}},{"$f":"SUM(#REF!)","v":{"$error":"#REF!"}},{"$f":"SUM(#REF!)","v":{"$error":"#REF!"}},{"$f":"SUM(#REF!)","v":{"$error":"#REF!"}},{"$f":"SUM(#REF!)","v":{"$error":"#REF!"}},{"$f":"SUM(#REF!)","v":{"$error":"#REF!"}},{"$f":"SUM(#REF!)","v":{"$error":"#REF!"}},{"$f":"SUM(#REF!)","v":{"$error":"#REF!"}},{"$f":"SUM(#REF!)","v":{"$error":"#REF!"}},{"$f":"SUM(#REF!)","v":{"$error":"#REF!"}},{"$f":"SUM(#REF!)","v":{"$error":"#REF!"}},{"$f":"SUM(#REF!)","v":{"$error":"#REF!"}},{"$f":"SUM(#REF!)","v":{"$error":"#REF!"}},{"$f":"SUM(#REF!)","v":{"$error":"#REF!"}},{"$f":"SUM(#REF!)","v":{"$error":"#REF!"}},{"$f":"SUM(#REF!)","v":{"$error":"#REF!"}},{"$f":"SUM(#REF!)","v":{"$error":"#REF!"}},{"$f":"SUM(#REF!)","v":{"$error":"#REF!"}},{"$f":"SUM(#REF!)","v":{"$error":"#REF!"}},{"$f":"SUM(#REF!)","v":{"$error":"#REF!"}},{"$f":"SUM(#REF!)","v":{"$error":"#REF!"}},{"$f":"SUM(#REF!)","v":{"$error":"#REF!"}},{"$f":"SUM(#REF!)","v":{"$error":"#REF!"}},{"$f":"SUM(#REF!)","v":{"$error":"#REF!"}},{"$f":"SUM(#REF!)","v":{"$error":"#REF!"}},{"$f":"SUM(#REF!)","v":{"$error":"#REF!"}},{"$f":"SUM(#REF!)","v":{"$error":"#REF!"}},{"$f":"SUM(#REF!)","v":{"$error":"#REF!"}},{"$f":"SUM(#REF!)","v":{"$error":"#REF!"}},{"$f":"SUM(#REF!)","v":{"$error":"#REF!"}},{"$f":"SUM(#REF!)","v":{"$error":"#REF!"}},{"$f":"SUM(#REF!)","v":{"$error":"#REF!"}},{"$f":"SUM(#REF!)","v":{"$error":"#REF!"}},{"$f":"SUM(#REF!)","v":{"$error":"#REF!"}},{"$f":"SUM(#REF!)","v":{"$error":"#REF!"}},{"$f":"SUM(#REF!)","v":{"$error":"#REF!"}},{"$f":"SUM(#REF!)","v":{"$error":"#REF!"}},{"$f":"SUM(#REF!)","v":{"$error":"#REF!"}},{"$f":"SUM(#REF!)","v":{"$error":"#REF!"}},{"$f":"SUM(#REF!)","v":{"$error":"#REF!"}},{"$f":"SUM(#REF!)","v":{"$error":"#REF!"}},{"$f":"SUM(#REF!)","v":{"$error":"#REF!"}},{"$f":"SUM(#REF!)","v":{"$error":"#REF!"}},{"$f":"SUM(#REF!)","v":{"$error":"#REF!"}},{"$f":"SUM(#REF!)","v":{"$error":"#REF!"}},{"$f":"SUM(#REF!)","v":{"$error":"#REF!"}},{"$f":"SUM(#REF!)","v":{"$error":"#REF!"}},{"$f":"SUM(#REF!)","v":{"$error":"#REF!"}},{"$f":"SUM(#REF!)","v":{"$error":"#REF!"}},{"$f":"SUM(#REF!)","v":{"$error":"#REF!"}},{"$f":"SUM(#REF!)","v":{"$error":"#REF!"}},{"$f":"SUM(#REF!)","v":{"$error":"#REF!"}},{"$f":"SUM(#REF!)","v":{"$error":"#REF!"}},{"$f":"SUM(#REF!)","v":{"$error":"#REF!"}},{"$f":"SUM(#REF!)","v":{"$error":"#REF!"}},{"$f":"SUM(#REF!)","v":{"$error":"#REF!"}},{"$f":"SUM(#REF!)","v":{"$error":"#REF!"}},{"$f":"SUM(#REF!)","v":{"$error":"#REF!"}},{"$f":"SUM(#REF!)","v":{"$error":"#REF!"}},{"$f":"SUM(#REF!)","v":{"$error":"#REF!"}},{"$f":"SUM(#REF!)","v":{"$error":"#REF!"}},{"$f":"SUM(#REF!)","v":{"$error":"#REF!"}},{"$f":"SUM(#REF!)","v":{"$error":"#REF!"}},{"$f":"SUM(#REF!)","v":{"$error":"#REF!"}},{"$f":"SUM(#REF!)","v":{"$error":"#REF!"}},{"$f":"SUM(#REF!)","v":{"$error":"#REF!"}},{"$f":"SUM(#REF!)","v":{"$error":"#REF!"}},{"$f":"SUM(#REF!)","v":{"$error":"#REF!"}},{"$f":"SUM(#REF!)","v":{"$error":"#REF!"}},{"$f":"SUM(#REF!)","v":{"$error":"#REF!"}},{"$f":"SUM(#REF!)","v":{"$error":"#REF!"}},{"$f":"SUM(#REF!)","v":{"$error":"#REF!"}},{"$f":"SUM(#REF!)","v":{"$error":"#REF!"}},{"$f":"SUM(#REF!)","v":{"$error":"#REF!"}},{"$f":"SUM(#REF!)","v":{"$error":"#REF!"}},{"$f":"SUM(#REF!)","v":{"$error":"#REF!"}},{"$f":"SUM(#REF!)","v":{"$error":"#REF!"}},{"$f":"SUM(#REF!)","v":{"$error":"#REF!"}},{"$f":"SUM(#REF!)","v":{"$error":"#REF!"}},{"$f":"SUM(#REF!)","v":{"$error":"#REF!"}},{"$f":"SUM(#REF!)","v":{"$error":"#REF!"}},{"$f":"SUM(#REF!)","v":{"$error":"#REF!"}},{"$f":"SUM(#REF!)","v":{"$error":"#REF!"}},{"$f":"SUM(#REF!)","v":{"$error":"#REF!"}},{"$f":"SUM(#REF!)","v":{"$error":"#REF!"}},{"$f":"SUM(#REF!)","v":{"$error":"#REF!"}},{"$f":"SUM(#REF!)","v":{"$error":"#REF!"}},{"$f":"SUM(#REF!)","v":{"$error":"#REF!"}},{"$f":"SUM(#REF!)","v":{"$error":"#REF!"}},{"$f":"SUM(#REF!)","v":{"$error":"#REF!"}},{"$f":"SUM(#REF!)","v":{"$error":"#REF!"}},{"$f":"SUM(#REF!)","v":{"$error":"#REF!"}},{"$f":"SUM(#REF!)","v":{"$error":"#REF!"}},{"$f":"SUM(#REF!)","v":{"$error":"#REF!"}},{"$f":"SUM(#REF!)","v":{"$error":"#REF!"}},{"$f":"SUM(#REF!)","v":{"$error":"#REF!"}},{"$f":"SUM(#REF!)","v":{"$error":"#REF!"}},{"$f":"SUM(#REF!)","v":{"$error":"#REF!"}},{"$f":"SUM(#REF!)","v":{"$error":"#REF!"}},{"$f":"SUM(#REF!)","v":{"$error":"#REF!"}},{"$f":"SUM(#REF!)","v":{"$error":"#REF!"}},{"$f":"SUM(#REF!)","v":{"$error":"#REF!"}},{"$f":"SUM(#REF!)","v":{"$error":"#REF!"}},{"$f":"SUM(#REF!)","v":{"$error":"#REF!"}},{"$f":"SUM(#REF!)","v":{"$error":"#REF!"}},{"$f":"SUM(#REF!)","v":{"$error":"#REF!"}},{"$f":"SUM(#REF!)","v":{"$error":"#REF!"}},{"$f":"SUM(#REF!)","v":{"$error":"#REF!"}},{"$f":"SUM(#REF!)","v":{"$error":"#REF!"}},{"$f":"SUM(#REF!)","v":{"$error":"#REF!"}},{"$f":"SUM(#REF!)","v":{"$error":"#REF!"}},{"$f":"SUM(#REF!)","v":{"$error":"#REF!"}},{"$f":"SUM(#REF!)","v":{"$error":"#REF!"}},{"$f":"SUM(#REF!)","v":{"$error":"#REF!"}},{"$f":"SUM(#REF!)","v":{"$error":"#REF!"}},{"$f":"SUM(#REF!)","v":{"$error":"#REF!"}},{"$f":"SUM(#REF!)","v":{"$error":"#REF!"}},{"$f":"SUM(#REF!)","v":{"$error":"#REF!"}},{"$f":"SUM(#REF!)","v":{"$error":"#REF!"}},{"$f":"SUM(#REF!)","v":{"$error":"#REF!"}},{"$f":"SUM(#REF!)","v":{"$error":"#REF!"}},{"$f":"SUM(#REF!)","v":{"$error":"#REF!"}},{"$f":"SUM(#REF!)","v":{"$error":"#REF!"}},{"$f":"SUM(#REF!)","v":{"$error":"#REF!"}},{"$f":"SUM(#REF!)","v":{"$error":"#REF!"}},{"$f":"SUM(#REF!)","v":{"$error":"#REF!"}},{"$f":"SUM(#REF!)","v":{"$error":"#REF!"}},{"$f":"SUM(#REF!)","v":{"$error":"#REF!"}},{"$f":"SUM(#REF!)","v":{"$error":"#REF!"}},{"$f":"SUM(#REF!)","v":{"$error":"#REF!"}},{"$f":"SUM(#REF!)","v":{"$error":"#REF!"}},{"$f":"SUM(#REF!)","v":{"$error":"#REF!"}},{"$f":"SUM(#REF!)","v":{"$error":"#REF!"}},{"$f":"SUM(#REF!)","v":{"$error":"#REF!"}},{"$f":"SUM(#REF!)","v":{"$error":"#REF!"}},{"$f":"SUM(#REF!)","v":{"$error":"#REF!"}},{"$f":"SUM(#REF!)","v":{"$error":"#REF!"}},{"$f":"SUM(#REF!)","v":{"$error":"#REF!"}},{"$f":"SUM(#REF!)","v":{"$error":"#REF!"}},{"$f":"SUM(#REF!)","v":{"$error":"#REF!"}},{"$f":"SUM(#REF!)","v":{"$error":"#REF!"}},{"$f":"SUM(#REF!)","v":{"$error":"#REF!"}},{"$f":"SUM(#REF!)","v":{"$error":"#REF!"}},{"$f":"SUM(#REF!)","v":{"$error":"#REF!"}},{"$f":"SUM(#REF!)","v":{"$error":"#REF!"}},{"$f":"SUM(#REF!)","v":{"$error":"#REF!"}},{"$f":"SUM(#REF!)","v":{"$error":"#REF!"}},{"$f":"SUM(#REF!)","v":{"$error":"#REF!"}},{"$f":"SUM(#REF!)","v":{"$error":"#REF!"}},{"$f":"SUM(#REF!)","v":{"$error":"#REF!"}},{"$f":"SUM(#REF!)","v":{"$error":"#REF!"}},{"$f":"SUM(#REF!)","v":{"$error":"#REF!"}},{"$f":"SUM(#REF!)","v":{"$error":"#REF!"}},{"$f":"SUM(#REF!)","v":{"$error":"#REF!"}},{"$f":"SUM(#REF!)","v":{"$error":"#REF!"}},{"$f":"SUM(#REF!)","v":{"$error":"#REF!"}},{"$f":"SUM(#REF!)","v":{"$error":"#REF!"}},{"$f":"SUM(#REF!)","v":{"$error":"#REF!"}},{"$f":"SUM(#REF!)","v":{"$error":"#REF!"}},{"$f":"SUM(#REF!)","v":{"$error":"#REF!"}},{"$f":"SUM(#REF!)","v":{"$error":"#REF!"}},{"$f":"SUM(#REF!)","v":{"$error":"#REF!"}},{"$f":"SUM(#REF!)","v":{"$error":"#REF!"}},{"$f":"SUM(#REF!)","v":{"$error":"#REF!"}},{"$f":"SUM(#REF!)","v":{"$error":"#REF!"}},{"$f":"SUM(#REF!)","v":{"$error":"#REF!"}},{"$f":"SUM(#REF!)","v":{"$error":"#REF!"}},{"$f":"SUM(#REF!)","v":{"$error":"#REF!"}},{"$f":"SUM(#REF!)","v":{"$error":"#REF!"}},{"$f":"SUM(#REF!)","v":{"$error":"#REF!"}},{"$f":"SUM(#REF!)","v":{"$error":"#REF!"}},{"$f":"SUM(#REF!)","v":{"$error":"#REF!"}},{"$f":"SUM(#REF!)","v":{"$error":"#REF!"}},{"$f":"SUM(#REF!)","v":{"$error":"#REF!"}},{"$f":"SUM(#REF!)","v":{"$error":"#REF!"}},{"$f":"SUM(#REF!)","v":{"$error":"#REF!"}},{"$f":"SUM(#REF!)","v":{"$error":"#REF!"}},{"$f":"SUM(#REF!)","v":{"$error":"#REF!"}},{"$f":"SUM(#REF!)","v":{"$error":"#REF!"}},{"$f":"SUM(#REF!)","v":{"$error":"#REF!"}},{"$f":"SUM(#REF!)","v":{"$error":"#REF!"}},{"$f":"SUM(#REF!)","v":{"$error":"#REF!"}},{"$f":"SUM(#REF!)","v":{"$error":"#REF!"}},{"$f":"SUM(#REF!)","v":{"$error":"#REF!"}},{"$f":"SUM(#REF!)","v":{"$error":"#REF!"}},{"$f":"SUM(#REF!)","v":{"$error":"#REF!"}},{"$f":"SUM(#REF!)","v":{"$error":"#REF!"}},{"$f":"SUM(#REF!)","v":{"$error":"#REF!"}},{"$f":"SUM(#REF!)","v":{"$error":"#REF!"}},{"$f":"SUM(#REF!)","v":{"$error":"#REF!"}},{"$f":"SUM(#REF!)","v":{"$error":"#REF!"}},{"$f":"SUM(#REF!)","v":{"$error":"#REF!"}},{"$f":"SUM(#REF!)","v":{"$error":"#REF!"}},{"$f":"SUM(#REF!)","v":{"$error":"#REF!"}},{"$f":"SUM(#REF!)","v":{"$error":"#REF!"}},{"$f":"SUM(#REF!)","v":{"$error":"#REF!"}},{"$f":"SUM(#REF!)","v":{"$error":"#REF!"}},{"$f":"SUM(#REF!)","v":{"$error":"#REF!"}},{"$f":"SUM(#REF!)","v":{"$error":"#REF!"}},{"$f":"SUM(#REF!)","v":{"$error":"#REF!"}},{"$f":"SUM(#REF!)","v":{"$error":"#REF!"}},{"$f":"SUM(#REF!)","v":{"$error":"#REF!"}},{"$f":"SUM(#REF!)","v":{"$error":"#REF!"}},{"$f":"SUM(#REF!)","v":{"$error":"#REF!"}},{"$f":"SUM(#REF!)","v":{"$error":"#REF!"}},{"$f":"SUM(#REF!)","v":{"$error":"#REF!"}},{"$f":"SUM(#REF!)","v":{"$error":"#REF!"}},{"$f":"SUM(#REF!)","v":{"$error":"#REF!"}},{"$f":"SUM(#REF!)","v":{"$error":"#REF!"}},{"$f":"SUM(#REF!)","v":{"$error":"#REF!"}},{"$f":"SUM(#REF!)","v":{"$error":"#REF!"}},{"$f":"SUM(#REF!)","v":{"$error":"#REF!"}},{"$f":"SUM(#REF!)","v":{"$error":"#REF!"}},{"$f":"SUM(#REF!)","v":{"$error":"#REF!"}},{"$f":"SUM(#REF!)","v":{"$error":"#REF!"}},{"$f":"SUM(#REF!)","v":{"$error":"#REF!"}},{"$f":"SUM(#REF!)","v":{"$error":"#REF!"}},{"$f":"SUM(#REF!)","v":{"$error":"#REF!"}},{"$f":"SUM(#REF!)","v":{"$error":"#REF!"}},{"$f":"SUM(#REF!)","v":{"$error":"#REF!"}},{"$f":"SUM(#REF!)","v":{"$error":"#REF!"}},{"$f":"SUM(#REF!)","v":{"$error":"#REF!"}},{"$f":"SUM(#REF!)","v":{"$error":"#REF!"}},{"$f":"SUM(#REF!)","v":{"$error":"#REF!"}},{"$f":"SUM(#REF!)","v":{"$error":"#REF!"}},{"$f":"SUM(#REF!)","v":{"$error":"#REF!"}},{"$f":"SUM(#REF!)","v":{"$error":"#REF!"}},{"$f":"SUM(#REF!)","v":{"$error":"#REF!"}},{"$f":"SUM(#REF!)","v":{"$error":"#REF!"}},{"$f":"SUM(#REF!)","v":{"$error":"#REF!"}},{"$f":"SUM(#REF!)","v":{"$error":"#REF!"}},{"$f":"SUM(#REF!)","v":{"$error":"#REF!"}},{"$f":"SUM(#REF!)","v":{"$error":"#REF!"}},{"$f":"SUM(#REF!)","v":{"$error":"#REF!"}},{"$f":"SUM(#REF!)","v":{"$error":"#REF!"}},{"$f":"SUM(#REF!)","v":{"$error":"#REF!"}},{"$f":"SUM(#REF!)","v":{"$error":"#REF!"}},{"$f":"SUM(#REF!)","v":{"$error":"#REF!"}},{"$f":"SUM(#REF!)","v":{"$error":"#REF!"}},{"$f":"SUM(#REF!)","v":{"$error":"#REF!"}},{"$f":"SUM(#REF!)","v":{"$error":"#REF!"}},{"$f":"SUM(#REF!)","v":{"$error":"#REF!"}},{"$f":"SUM(#REF!)","v":{"$error":"#REF!"}},{"$f":"SUM(#REF!)","v":{"$error":"#REF!"}},{"$f":"SUM(#REF!)","v":{"$error":"#REF!"}},{"$f":"SUM(#REF!)","v":{"$error":"#REF!"}},{"$f":"SUM(#REF!)","v":{"$error":"#REF!"}},{"$f":"SUM(#REF!)","v":{"$error":"#REF!"}},{"$f":"SUM(#REF!)","v":{"$error":"#REF!"}},{"$f":"SUM(#REF!)","v":{"$error":"#REF!"}},{"$f":"SUM(#REF!)","v":{"$error":"#REF!"}},{"$f":"SUM(#REF!)","v":{"$error":"#REF!"}},{"$f":"SUM(#REF!)","v":{"$error":"#REF!"}},{"$f":"SUM(#REF!)","v":{"$error":"#REF!"}},{"$f":"SUM(#REF!)","v":{"$error":"#REF!"}},{"$f":"SUM(#REF!)","v":{"$error":"#REF!"}},{"$f":"SUM(#REF!)","v":{"$error":"#REF!"}},{"$f":"SUM(#REF!)","v":{"$error":"#REF!"}},{"$f":"SUM(#REF!)","v":{"$error":"#REF!"}},{"$f":"SUM(#REF!)","v":{"$error":"#REF!"}},{"$f":"SUM(#REF!)","v":{"$error":"#REF!"}},{"$f":"SUM(#REF!)","v":{"$error":"#REF!"}},{"$f":"SUM(#REF!)","v":{"$error":"#REF!"}},{"$f":"SUM(#REF!)","v":{"$error":"#REF!"}},{"$f":"SUM(#REF!)","v":{"$error":"#REF!"}},{"$f":"SUM(#REF!)","v":{"$error":"#REF!"}},{"$f":"SUM(#REF!)","v":{"$error":"#REF!"}},{"$f":"SUM(#REF!)","v":{"$error":"#REF!"}},{"$f":"SUM(#REF!)","v":{"$error":"#REF!"}},{"$f":"SUM(#REF!)","v":{"$error":"#REF!"}},{"$f":"SUM(#REF!)","v":{"$error":"#REF!"}},{"$f":"SUM(#REF!)","v":{"$error":"#REF!"}},{"$f":"SUM(#REF!)","v":{"$error":"#REF!"}},{"$f":"SUM(#REF!)","v":{"$error":"#REF!"}},{"$f":"SUM(#REF!)","v":{"$error":"#REF!"}},{"$f":"SUM(#REF!)","v":{"$error":"#REF!"}},{"$f":"SUM(#REF!)","v":{"$error":"#REF!"}},{"$f":"SUM(#REF!)","v":{"$error":"#REF!"}},{"$f":"SUM(#REF!)","v":{"$error":"#REF!"}},{"$f":"SUM(#REF!)","v":{"$error":"#REF!"}},{"$f":"SUM(#REF!)","v":{"$error":"#REF!"}},{"$f":"SUM(#REF!)","v":{"$error":"#REF!"}},{"$f":"SUM(#REF!)","v":{"$error":"#REF!"}},{"$f":"SUM(#REF!)","v":{"$error":"#REF!"}},{"$f":"SUM(#REF!)","v":{"$error":"#REF!"}},{"$f":"SUM(#REF!)","v":{"$error":"#REF!"}},{"$f":"SUM(#REF!)","v":{"$error":"#REF!"}},{"$f":"SUM(#REF!)","v":{"$error":"#REF!"}},{"$f":"SUM(#REF!)","v":{"$error":"#REF!"}},{"$f":"SUM(#REF!)","v":{"$error":"#REF!"}},{"$f":"SUM(#REF!)","v":{"$error":"#REF!"}},{"$f":"SUM(#REF!)","v":{"$error":"#REF!"}},{"$f":"SUM(#REF!)","v":{"$error":"#REF!"}},{"$f":"SUM(#REF!)","v":{"$error":"#REF!"}},{"$f":"SUM(#REF!)","v":{"$error":"#REF!"}},{"$f":"SUM(#REF!)","v":{"$error":"#REF!"}},{"$f":"SUM(#REF!)","v":{"$error":"#REF!"}},{"$f":"SUM(#REF!)","v":{"$error":"#REF!"}},{"$f":"SUM(#REF!)","v":{"$error":"#REF!"}},{"$f":"SUM(#REF!)","v":{"$error":"#REF!"}},{"$f":"SUM(#REF!)","v":{"$error":"#REF!"}},{"$f":"SUM(#REF!)","v":{"$error":"#REF!"}},{"$f":"SUM(#REF!)","v":{"$error":"#REF!"}},{"$f":"SUM(#REF!)","v":{"$error":"#REF!"}},{"$f":"SUM(#REF!)","v":{"$error":"#REF!"}},{"$f":"SUM(#REF!)","v":{"$error":"#REF!"}},{"$f":"SUM(#REF!)","v":{"$error":"#REF!"}},{"$f":"SUM(#REF!)","v":{"$error":"#REF!"}},{"$f":"SUM(#REF!)","v":{"$error":"#REF!"}},{"$f":"SUM(#REF!)","v":{"$error":"#REF!"}},{"$f":"SUM(#REF!)","v":{"$error":"#REF!"}},{"$f":"SUM(#REF!)","v":{"$error":"#REF!"}},{"$f":"SUM(#REF!)","v":{"$error":"#REF!"}},{"$f":"SUM(#REF!)","v":{"$error":"#REF!"}},{"$f":"SUM(#REF!)","v":{"$error":"#REF!"}},{"$f":"SUM(#REF!)","v":{"$error":"#REF!"}},{"$f":"SUM(#REF!)","v":{"$error":"#REF!"}},{"$f":"SUM(#REF!)","v":{"$error":"#REF!"}},{"$f":"SUM(#REF!)","v":{"$error":"#REF!"}},{"$f":"SUM(#REF!)","v":{"$error":"#REF!"}},{"$f":"SUM(#REF!)","v":{"$error":"#REF!"}},{"$f":"SUM(#REF!)","v":{"$error":"#REF!"}},{"$f":"SUM(#REF!)","v":{"$error":"#REF!"}},{"$f":"SUM(#REF!)","v":{"$error":"#REF!"}},{"$f":"SUM(#REF!)","v":{"$error":"#REF!"}},{"$f":"SUM(#REF!)","v":{"$error":"#REF!"}},{"$f":"SUM(#REF!)","v":{"$error":"#REF!"}},{"$f":"SUM(#REF!)","v":{"$error":"#REF!"}},{"$f":"SUM(#REF!)","v":{"$error":"#REF!"}},{"$f":"SUM(#REF!)","v":{"$error":"#REF!"}},{"$f":"SUM(#REF!)","v":{"$error":"#REF!"}},{"$f":"SUM(#REF!)","v":{"$error":"#REF!"}},{"$f":"SUM(#REF!)","v":{"$error":"#REF!"}},{"$f":"SUM(#REF!)","v":{"$error":"#REF!"}},{"$f":"SUM(#REF!)","v":{"$error":"#REF!"}},{"$f":"SUM(#REF!)","v":{"$error":"#REF!"}},{"$f":"SUM(#REF!)","v":{"$error":"#REF!"}},{"$f":"SUM(#REF!)","v":{"$error":"#REF!"}},{"$f":"SUM(#REF!)","v":{"$error":"#REF!"}},{"$f":"SUM(#REF!)","v":{"$error":"#REF!"}},{"$f":"SUM(#REF!)","v":{"$error":"#REF!"}},{"$f":"SUM(#REF!)","v":{"$error":"#REF!"}},{"$f":"SUM(#REF!)","v":{"$error":"#REF!"}},{"$f":"SUM(#REF!)","v":{"$error":"#REF!"}},{"$f":"SUM(#REF!)","v":{"$error":"#REF!"}},{"$f":"SUM(#REF!)","v":{"$error":"#REF!"}},{"$f":"SUM(#REF!)","v":{"$error":"#REF!"}},{"$f":"SUM(#REF!)","v":{"$error":"#REF!"}},{"$f":"SUM(#REF!)","v":{"$error":"#REF!"}},{"$f":"SUM(#REF!)","v":{"$error":"#REF!"}},{"$f":"SUM(#REF!)","v":{"$error":"#REF!"}},{"$f":"SUM(#REF!)","v":{"$error":"#REF!"}},{"$f":"SUM(#REF!)","v":{"$error":"#REF!"}},{"$f":"SUM(#REF!)","v":{"$error":"#REF!"}},{"$f":"SUM(#REF!)","v":{"$error":"#REF!"}},{"$f":"SUM(#REF!)","v":{"$error":"#REF!"}},{"$f":"SUM(#REF!)","v":{"$error":"#REF!"}},{"$f":"SUM(#REF!)","v":{"$error":"#REF!"}},{"$f":"SUM(#REF!)","v":{"$error":"#REF!"}},{"$f":"SUM(#REF!)","v":{"$error":"#REF!"}},{"$f":"SUM(#REF!)","v":{"$error":"#REF!"}},{"$f":"SUM(#REF!)","v":{"$error":"#REF!"}},{"$f":"SUM(#REF!)","v":{"$error":"#REF!"}},{"$f":"SUM(#REF!)","v":{"$error":"#REF!"}},{"$f":"SUM(#REF!)","v":{"$error":"#REF!"}},{"$f":"SUM(#REF!)","v":{"$error":"#REF!"}},{"$f":"SUM(#REF!)","v":{"$error":"#REF!"}},{"$f":"SUM(#REF!)","v":{"$error":"#REF!"}},{"$f":"SUM(#REF!)","v":{"$error":"#REF!"}},{"$f":"SUM(#REF!)","v":{"$error":"#REF!"}},{"$f":"SUM(#REF!)","v":{"$error":"#REF!"}},{"$f":"SUM(#REF!)","v":{"$error":"#REF!"}},{"$f":"SUM(#REF!)","v":{"$error":"#REF!"}},{"$f":"SUM(#REF!)","v":{"$error":"#REF!"}},{"$f":"SUM(#REF!)","v":{"$error":"#REF!"}},{"$f":"SUM(#REF!)","v":{"$error":"#REF!"}},{"$f":"SUM(#REF!)","v":{"$error":"#REF!"}},{"$f":"SUM(#REF!)","v":{"$error":"#REF!"}},{"$f":"SUM(#REF!)","v":{"$error":"#REF!"}},{"$f":"SUM(#REF!)","v":{"$error":"#REF!"}},{"$f":"SUM(#REF!)","v":{"$error":"#REF!"}},{"$f":"SUM(#REF!)","v":{"$error":"#REF!"}},{"$f":"SUM(#REF!)","v":{"$error":"#REF!"}},{"$f":"SUM(#REF!)","v":{"$error":"#REF!"}},{"$f":"SUM(#REF!)","v":{"$error":"#REF!"}},{"$f":"SUM(#REF!)","v":{"$error":"#REF!"}},{"$f":"SUM(#REF!)","v":{"$error":"#REF!"}},{"$f":"SUM(#REF!)","v":{"$error":"#REF!"}},{"$f":"SUM(#REF!)","v":{"$error":"#REF!"}},{"$f":"SUM(#REF!)","v":{"$error":"#REF!"}},{"$f":"SUM(#REF!)","v":{"$error":"#REF!"}},{"$f":"SUM(#REF!)","v":{"$error":"#REF!"}},{"$f":"SUM(#REF!)","v":{"$error":"#REF!"}},{"$f":"SUM(#REF!)","v":{"$error":"#REF!"}},{"$f":"SUM(#REF!)","v":{"$error":"#REF!"}},{"$f":"SUM(#REF!)","v":{"$error":"#REF!"}},{"$f":"SUM(#REF!)","v":{"$error":"#REF!"}},{"$f":"SUM(#REF!)","v":{"$error":"#REF!"}},{"$f":"SUM(#REF!)","v":{"$error":"#REF!"}},{"$f":"SUM(#REF!)","v":{"$error":"#REF!"}},{"$f":"SUM(#REF!)","v":{"$error":"#REF!"}},{"$f":"SUM(#REF!)","v":{"$error":"#REF!"}},{"$f":"SUM(#REF!)","v":{"$error":"#REF!"}},{"$f":"SUM(#REF!)","v":{"$error":"#REF!"}},{"$f":"SUM(#REF!)","v":{"$error":"#REF!"}},{"$f":"SUM(#REF!)","v":{"$error":"#REF!"}},{"$f":"SUM(#REF!)","v":{"$error":"#REF!"}},{"$f":"SUM(#REF!)","v":{"$error":"#REF!"}},{"$f":"SUM(#REF!)","v":{"$error":"#REF!"}},{"$f":"SUM(#REF!)","v":{"$error":"#REF!"}},{"$f":"SUM(#REF!)","v":{"$error":"#REF!"}},{"$f":"SUM(#REF!)","v":{"$error":"#REF!"}},{"$f":"SUM(#REF!)","v":{"$error":"#REF!"}},{"$f":"SUM(#REF!)","v":{"$error":"#REF!"}},{"$f":"SUM(#REF!)","v":{"$error":"#REF!"}},{"$f":"SUM(#REF!)","v":{"$error":"#REF!"}},{"$f":"SUM(#REF!)","v":{"$error":"#REF!"}},{"$f":"SUM(#REF!)","v":{"$error":"#REF!"}},{"$f":"SUM(#REF!)","v":{"$error":"#REF!"}},{"$f":"SUM(#REF!)","v":{"$error":"#REF!"}},{"$f":"SUM(#REF!)","v":{"$error":"#REF!"}},{"$f":"SUM(#REF!)","v":{"$error":"#REF!"}},{"$f":"SUM(#REF!)","v":{"$error":"#REF!"}},{"$f":"SUM(#REF!)","v":{"$error":"#REF!"}},{"$f":"SUM(#REF!)","v":{"$error":"#REF!"}},{"$f":"SUM(#REF!)","v":{"$error":"#REF!"}},{"$f":"SUM(#REF!)","v":{"$error":"#REF!"}},{"$f":"SUM(#REF!)","v":{"$error":"#REF!"}},{"$f":"SUM(#REF!)","v":{"$error":"#REF!"}},{"$f":"SUM(#REF!)","v":{"$error":"#REF!"}},{"$f":"SUM(#REF!)","v":{"$error":"#REF!"}},{"$f":"SUM(#REF!)","v":{"$error":"#REF!"}},{"$f":"SUM(#REF!)","v":{"$error":"#REF!"}},{"$f":"SUM(#REF!)","v":{"$error":"#REF!"}},{"$f":"SUM(#REF!)","v":{"$error":"#REF!"}},{"$f":"SUM(#REF!)","v":{"$error":"#REF!"}},{"$f":"SUM(#REF!)","v":{"$error":"#REF!"}},{"$f":"SUM(#REF!)","v":{"$error":"#REF!"}},{"$f":"SUM(#REF!)","v":{"$error":"#REF!"}},{"$f":"SUM(#REF!)","v":{"$error":"#REF!"}},{"$f":"SUM(#REF!)","v":{"$error":"#REF!"}},{"$f":"SUM(#REF!)","v":{"$error":"#REF!"}},{"$f":"SUM(#REF!)","v":{"$error":"#REF!"}},{"$f":"SUM(#REF!)","v":{"$error":"#REF!"}},{"$f":"SUM(#REF!)","v":{"$error":"#REF!"}},{"$f":"SUM(#REF!)","v":{"$error":"#REF!"}},{"$f":"SUM(#REF!)","v":{"$error":"#REF!"}},{"$f":"SUM(#REF!)","v":{"$error":"#REF!"}},{"$f":"SUM(#REF!)","v":{"$error":"#REF!"}},{"$f":"SUM(#REF!)","v":{"$error":"#REF!"}},{"$f":"SUM(#REF!)","v":{"$error":"#REF!"}},{"$f":"SUM(#REF!)","v":{"$error":"#REF!"}},{"$f":"SUM(#REF!)","v":{"$error":"#REF!"}},{"$f":"SUM(#REF!)","v":{"$error":"#REF!"}},{"$f":"SUM(#REF!)","v":{"$error":"#REF!"}},{"$f":"SUM(#REF!)","v":{"$error":"#REF!"}},{"$f":"SUM(#REF!)","v":{"$error":"#REF!"}},{"$f":"SUM(#REF!)","v":{"$error":"#REF!"}},{"$f":"SUM(#REF!)","v":{"$error":"#REF!"}},{"$f":"SUM(#REF!)","v":{"$error":"#REF!"}},{"$f":"SUM(#REF!)","v":{"$error":"#REF!"}},{"$f":"SUM(#REF!)","v":{"$error":"#REF!"}},{"$f":"SUM(#REF!)","v":{"$error":"#REF!"}},{"$f":"SUM(#REF!)","v":{"$error":"#REF!"}},{"$f":"SUM(#REF!)","v":{"$error":"#REF!"}},{"$f":"SUM(#REF!)","v":{"$error":"#REF!"}},{"$f":"SUM(#REF!)","v":{"$error":"#REF!"}},{"$f":"SUM(#REF!)","v":{"$error":"#REF!"}},{"$f":"SUM(#REF!)","v":{"$error":"#REF!"}},{"$f":"SUM(#REF!)","v":{"$error":"#REF!"}},{"$f":"SUM(#REF!)","v":{"$error":"#REF!"}},{"$f":"SUM(#REF!)","v":{"$error":"#REF!"}},{"$f":"SUM(#REF!)","v":{"$error":"#REF!"}},{"$f":"SUM(#REF!)","v":{"$error":"#REF!"}},{"$f":"SUM(#REF!)","v":{"$error":"#REF!"}},{"$f":"SUM(#REF!)","v":{"$error":"#REF!"}},{"$f":"SUM(#REF!)","v":{"$error":"#REF!"}},{"$f":"SUM(#REF!)","v":{"$error":"#REF!"}},{"$f":"SUM(#REF!)","v":{"$error":"#REF!"}},{"$f":"SUM(#REF!)","v":{"$error":"#REF!"}},{"$f":"SUM(#REF!)","v":{"$error":"#REF!"}},{"$f":"SUM(#REF!)","v":{"$error":"#REF!"}},{"$f":"SUM(#REF!)","v":{"$error":"#REF!"}},{"$f":"SUM(#REF!)","v":{"$error":"#REF!"}},{"$f":"SUM(#REF!)","v":{"$error":"#REF!"}},{"$f":"SUM(#REF!)","v":{"$error":"#REF!"}},{"$f":"SUM(#REF!)","v":{"$error":"#REF!"}},{"$f":"SUM(#REF!)","v":{"$error":"#REF!"}},{"$f":"SUM(#REF!)","v":{"$error":"#REF!"}},{"$f":"SUM(#REF!)","v":{"$error":"#REF!"}},{"$f":"SUM(#REF!)","v":{"$error":"#REF!"}},{"$f":"SUM(#REF!)","v":{"$error":"#REF!"}},{"$f":"SUM(#REF!)","v":{"$error":"#REF!"}},{"$f":"SUM(#REF!)","v":{"$error":"#REF!"}},{"$f":"SUM(#REF!)","v":{"$error":"#REF!"}},{"$f":"SUM(#REF!)","v":{"$error":"#REF!"}},{"$f":"SUM(#REF!)","v":{"$error":"#REF!"}},{"$f":"SUM(#REF!)","v":{"$error":"#REF!"}},{"$f":"SUM(#REF!)","v":{"$error":"#REF!"}},{"$f":"SUM(#REF!)","v":{"$error":"#REF!"}},{"$f":"SUM(#REF!)","v":{"$error":"#REF!"}},{"$f":"SUM(#REF!)","v":{"$error":"#REF!"}},{"$f":"SUM(#REF!)","v":{"$error":"#REF!"}},{"$f":"SUM(#REF!)","v":{"$error":"#REF!"}},{"$f":"SUM(#REF!)","v":{"$error":"#REF!"}},{"$f":"SUM(#REF!)","v":{"$error":"#REF!"}},{"$f":"SUM(#REF!)","v":{"$error":"#REF!"}},{"$f":"SUM(#REF!)","v":{"$error":"#REF!"}},{"$f":"SUM(#REF!)","v":{"$error":"#REF!"}},{"$f":"SUM(#REF!)","v":{"$error":"#REF!"}},{"$f":"SUM(#REF!)","v":{"$error":"#REF!"}},{"$f":"SUM(#REF!)","v":{"$error":"#REF!"}},{"$f":"SUM(#REF!)","v":{"$error":"#REF!"}},{"$f":"SUM(#REF!)","v":{"$error":"#REF!"}},{"$f":"SUM(#REF!)","v":{"$error":"#REF!"}},{"$f":"SUM(#REF!)","v":{"$error":"#REF!"}},{"$f":"SUM(#REF!)","v":{"$error":"#REF!"}},{"$f":"SUM(#REF!)","v":{"$error":"#REF!"}},{"$f":"SUM(#REF!)","v":{"$error":"#REF!"}},{"$f":"SUM(#REF!)","v":{"$error":"#REF!"}},{"$f":"SUM(#REF!)","v":{"$error":"#REF!"}},{"$f":"SUM(#REF!)","v":{"$error":"#REF!"}},{"$f":"SUM(#REF!)","v":{"$error":"#REF!"}},{"$f":"SUM(#REF!)","v":{"$error":"#REF!"}},{"$f":"SUM(#REF!)","v":{"$error":"#REF!"}},{"$f":"SUM(#REF!)","v":{"$error":"#REF!"}},{"$f":"SUM(#REF!)","v":{"$error":"#REF!"}},{"$f":"SUM(#REF!)","v":{"$error":"#REF!"}},{"$f":"SUM(#REF!)","v":{"$error":"#REF!"}},{"$f":"SUM(#REF!)","v":{"$error":"#REF!"}},{"$f":"SUM(#REF!)","v":{"$error":"#REF!"}},{"$f":"SUM(#REF!)","v":{"$error":"#REF!"}},{"$f":"SUM(#REF!)","v":{"$error":"#REF!"}},{"$f":"SUM(#REF!)","v":{"$error":"#REF!"}},{"$f":"SUM(#REF!)","v":{"$error":"#REF!"}},{"$f":"SUM(#REF!)","v":{"$error":"#REF!"}},{"$f":"SUM(#REF!)","v":{"$error":"#REF!"}},{"$f":"SUM(#REF!)","v":{"$error":"#REF!"}},{"$f":"SUM(#REF!)","v":{"$error":"#REF!"}},{"$f":"SUM(#REF!)","v":{"$error":"#REF!"}},{"$f":"SUM(#REF!)","v":{"$error":"#REF!"}},{"$f":"SUM(#REF!)","v":{"$error":"#REF!"}},{"$f":"SUM(#REF!)","v":{"$error":"#REF!"}},{"$f":"SUM(#REF!)","v":{"$error":"#REF!"}},{"$f":"SUM(#REF!)","v":{"$error":"#REF!"}},{"$f":"SUM(#REF!)","v":{"$error":"#REF!"}},{"$f":"SUM(#REF!)","v":{"$error":"#REF!"}},{"$f":"SUM(#REF!)","v":{"$error":"#REF!"}},{"$f":"SUM(#REF!)","v":{"$error":"#REF!"}},{"$f":"SUM(#REF!)","v":{"$error":"#REF!"}},{"$f":"SUM(#REF!)","v":{"$error":"#REF!"}},{"$f":"SUM(#REF!)","v":{"$error":"#REF!"}},{"$f":"SUM(#REF!)","v":{"$error":"#REF!"}},{"$f":"SUM(#REF!)","v":{"$error":"#REF!"}},{"$f":"SUM(#REF!)","v":{"$error":"#REF!"}},{"$f":"SUM(#REF!)","v":{"$error":"#REF!"}},{"$f":"SUM(#REF!)","v":{"$error":"#REF!"}},{"$f":"SUM(#REF!)","v":{"$error":"#REF!"}},{"$f":"SUM(#REF!)","v":{"$error":"#REF!"}},{"$f":"SUM(#REF!)","v":{"$error":"#REF!"}},{"$f":"SUM(#REF!)","v":{"$error":"#REF!"}},{"$f":"SUM(#REF!)","v":{"$error":"#REF!"}},{"$f":"SUM(#REF!)","v":{"$error":"#REF!"}},{"$f":"SUM(#REF!)","v":{"$error":"#REF!"}},{"$f":"SUM(#REF!)","v":{"$error":"#REF!"}},{"$f":"SUM(#REF!)","v":{"$error":"#REF!"}},{"$f":"SUM(#REF!)","v":{"$error":"#REF!"}},{"$f":"SUM(#REF!)","v":{"$error":"#REF!"}},{"$f":"SUM(#REF!)","v":{"$error":"#REF!"}},{"$f":"SUM(#REF!)","v":{"$error":"#REF!"}},{"$f":"SUM(#REF!)","v":{"$error":"#REF!"}},{"$f":"SUM(#REF!)","v":{"$error":"#REF!"}},{"$f":"SUM(#REF!)","v":{"$error":"#REF!"}},{"$f":"SUM(#REF!)","v":{"$error":"#REF!"}},{"$f":"SUM(#REF!)","v":{"$error":"#REF!"}},{"$f":"SUM(#REF!)","v":{"$error":"#REF!"}},{"$f":"SUM(#REF!)","v":{"$error":"#REF!"}},{"$f":"SUM(#REF!)","v":{"$error":"#REF!"}},{"$f":"SUM(#REF!)","v":{"$error":"#REF!"}},{"$f":"SUM(#REF!)","v":{"$error":"#REF!"}},{"$f":"SUM(#REF!)","v":{"$error":"#REF!"}},{"$f":"SUM(#REF!)","v":{"$error":"#REF!"}},{"$f":"SUM(#REF!)","v":{"$error":"#REF!"}},{"$f":"SUM(#REF!)","v":{"$error":"#REF!"}},{"$f":"SUM(#REF!)","v":{"$error":"#REF!"}},{"$f":"SUM(#REF!)","v":{"$error":"#REF!"}},{"$f":"SUM(#REF!)","v":{"$error":"#REF!"}},{"$f":"SUM(#REF!)","v":{"$error":"#REF!"}},{"$f":"SUM(#REF!)","v":{"$error":"#REF!"}},{"$f":"SUM(#REF!)","v":{"$error":"#REF!"}},{"$f":"SUM(#REF!)","v":{"$error":"#REF!"}},{"$f":"SUM(#REF!)","v":{"$error":"#REF!"}},{"$f":"SUM(#REF!)","v":{"$error":"#REF!"}},{"$f":"SUM(#REF!)","v":{"$error":"#REF!"}},{"$f":"SUM(#REF!)","v":{"$error":"#REF!"}},{"$f":"SUM(#REF!)","v":{"$error":"#REF!"}},{"$f":"SUM(#REF!)","v":{"$error":"#REF!"}},{"$f":"SUM(#REF!)","v":{"$error":"#REF!"}},{"$f":"SUM(#REF!)","v":{"$error":"#REF!"}},{"$f":"SUM(#REF!)","v":{"$error":"#REF!"}},{"$f":"SUM(#REF!)","v":{"$error":"#REF!"}},{"$f":"SUM(#REF!)","v":{"$error":"#REF!"}},{"$f":"SUM(#REF!)","v":{"$error":"#REF!"}},{"$f":"SUM(#REF!)","v":{"$error":"#REF!"}},{"$f":"SUM(#REF!)","v":{"$error":"#REF!"}},{"$f":"SUM(#REF!)","v":{"$error":"#REF!"}},{"$f":"SUM(#REF!)","v":{"$error":"#REF!"}},{"$f":"SUM(#REF!)","v":{"$error":"#REF!"}},{"$f":"SUM(#REF!)","v":{"$error":"#REF!"}},{"$f":"SUM(#REF!)","v":{"$error":"#REF!"}},{"$f":"SUM(#REF!)","v":{"$error":"#REF!"}},{"$f":"SUM(#REF!)","v":{"$error":"#REF!"}},{"$f":"SUM(#REF!)","v":{"$error":"#REF!"}},{"$f":"SUM(#REF!)","v":{"$error":"#REF!"}},{"$f":"SUM(#REF!)","v":{"$error":"#REF!"}},{"$f":"SUM(#REF!)","v":{"$error":"#REF!"}},{"$f":"SUM(#REF!)","v":{"$error":"#REF!"}},{"$f":"SUM(#REF!)","v":{"$error":"#REF!"}},{"$f":"SUM(#REF!)","v":{"$error":"#REF!"}},{"$f":"SUM(#REF!)","v":{"$error":"#REF!"}},{"$f":"SUM(#REF!)","v":{"$error":"#REF!"}},{"$f":"SUM(#REF!)","v":{"$error":"#REF!"}},{"$f":"SUM(#REF!)","v":{"$error":"#REF!"}},{"$f":"SUM(#REF!)","v":{"$error":"#REF!"}},{"$f":"SUM(#REF!)","v":{"$error":"#REF!"}},{"$f":"SUM(#REF!)","v":{"$error":"#REF!"}},{"$f":"SUM(#REF!)","v":{"$error":"#REF!"}},{"$f":"SUM(#REF!)","v":{"$error":"#REF!"}},{"$f":"SUM(#REF!)","v":{"$error":"#REF!"}},{"$f":"SUM(#REF!)","v":{"$error":"#REF!"}},{"$f":"SUM(#REF!)","v":{"$error":"#REF!"}},{"$f":"SUM(#REF!)","v":{"$error":"#REF!"}},{"$f":"SUM(#REF!)","v":{"$error":"#REF!"}},{"$f":"SUM(#REF!)","v":{"$error":"#REF!"}},{"$f":"SUM(#REF!)","v":{"$error":"#REF!"}},{"$f":"SUM(#REF!)","v":{"$error":"#REF!"}},{"$f":"SUM(#REF!)","v":{"$error":"#REF!"}},{"$f":"SUM(#REF!)","v":{"$error":"#REF!"}},{"$f":"SUM(#REF!)","v":{"$error":"#REF!"}},{"$f":"SUM(#REF!)","v":{"$error":"#REF!"}},{"$f":"SUM(#REF!)","v":{"$error":"#REF!"}},{"$f":"SUM(#REF!)","v":{"$error":"#REF!"}},{"$f":"SUM(#REF!)","v":{"$error":"#REF!"}},{"$f":"SUM(#REF!)","v":{"$error":"#REF!"}},{"$f":"SUM(#REF!)","v":{"$error":"#REF!"}},{"$f":"SUM(#REF!)","v":{"$error":"#REF!"}},{"$f":"SUM(#REF!)","v":{"$error":"#REF!"}},{"$f":"SUM(#REF!)","v":{"$error":"#REF!"}},{"$f":"SUM(#REF!)","v":{"$error":"#REF!"}},{"$f":"SUM(#REF!)","v":{"$error":"#REF!"}},{"$f":"SUM(#REF!)","v":{"$error":"#REF!"}},{"$f":"SUM(#REF!)","v":{"$error":"#REF!"}},{"$f":"SUM(#REF!)","v":{"$error":"#REF!"}},{"$f":"SUM(#REF!)","v":{"$error":"#REF!"}},{"$f":"SUM(#REF!)","v":{"$error":"#REF!"}},{"$f":"SUM(#REF!)","v":{"$error":"#REF!"}},{"$f":"SUM(#REF!)","v":{"$error":"#REF!"}},{"$f":"SUM(#REF!)","v":{"$error":"#REF!"}},{"$f":"SUM(#REF!)","v":{"$error":"#REF!"}},{"$f":"SUM(#REF!)","v":{"$error":"#REF!"}},{"$f":"SUM(#REF!)","v":{"$error":"#REF!"}},{"$f":"SUM(#REF!)","v":{"$error":"#REF!"}},{"$f":"SUM(#REF!)","v":{"$error":"#REF!"}},{"$f":"SUM(#REF!)","v":{"$error":"#REF!"}},{"$f":"SUM(#REF!)","v":{"$error":"#REF!"}},{"$f":"SUM(#REF!)","v":{"$error":"#REF!"}},{"$f":"SUM(#REF!)","v":{"$error":"#REF!"}},{"$f":"SUM(#REF!)","v":{"$error":"#REF!"}},{"$f":"SUM(#REF!)","v":{"$error":"#REF!"}},{"$f":"SUM(#REF!)","v":{"$error":"#REF!"}},{"$f":"SUM(#REF!)","v":{"$error":"#REF!"}},{"$f":"SUM(#REF!)","v":{"$error":"#REF!"}},{"$f":"SUM(#REF!)","v":{"$error":"#REF!"}},{"$f":"SUM(#REF!)","v":{"$error":"#REF!"}},{"$f":"SUM(#REF!)","v":{"$error":"#REF!"}},{"$f":"SUM(#REF!)","v":{"$error":"#REF!"}},{"$f":"SUM(#REF!)","v":{"$error":"#REF!"}},{"$f":"SUM(#REF!)","v":{"$error":"#REF!"}},{"$f":"SUM(#REF!)","v":{"$error":"#REF!"}},{"$f":"SUM(#REF!)","v":{"$error":"#REF!"}},{"$f":"SUM(#REF!)","v":{"$error":"#REF!"}},{"$f":"SUM(#REF!)","v":{"$error":"#REF!"}},{"$f":"SUM(#REF!)","v":{"$error":"#REF!"}},{"$f":"SUM(#REF!)","v":{"$error":"#REF!"}},{"$f":"SUM(#REF!)","v":{"$error":"#REF!"}},{"$f":"SUM(#REF!)","v":{"$error":"#REF!"}},{"$f":"SUM(#REF!)","v":{"$error":"#REF!"}},{"$f":"SUM(#REF!)","v":{"$error":"#REF!"}},{"$f":"SUM(#REF!)","v":{"$error":"#REF!"}},{"$f":"SUM(#REF!)","v":{"$error":"#REF!"}},{"$f":"SUM(#REF!)","v":{"$error":"#REF!"}},{"$f":"SUM(#REF!)","v":{"$error":"#REF!"}},{"$f":"SUM(#REF!)","v":{"$error":"#REF!"}},{"$f":"SUM(#REF!)","v":{"$error":"#REF!"}},{"$f":"SUM(#REF!)","v":{"$error":"#REF!"}},{"$f":"SUM(#REF!)","v":{"$error":"#REF!"}},{"$f":"SUM(#REF!)","v":{"$error":"#REF!"}},{"$f":"SUM(#REF!)","v":{"$error":"#REF!"}},{"$f":"SUM(#REF!)","v":{"$error":"#REF!"}},{"$f":"SUM(#REF!)","v":{"$error":"#REF!"}},{"$f":"SUM(#REF!)","v":{"$error":"#REF!"}},{"$f":"SUM(#REF!)","v":{"$error":"#REF!"}},{"$f":"SUM(#REF!)","v":{"$error":"#REF!"}},{"$f":"SUM(#REF!)","v":{"$error":"#REF!"}},{"$f":"SUM(#REF!)","v":{"$error":"#REF!"}},{"$f":"SUM(#REF!)","v":{"$error":"#REF!"}},{"$f":"SUM(#REF!)","v":{"$error":"#REF!"}},{"$f":"SUM(#REF!)","v":{"$error":"#REF!"}},{"$f":"SUM(#REF!)","v":{"$error":"#REF!"}},{"$f":"SUM(#REF!)","v":{"$error":"#REF!"}},{"$f":"SUM(#REF!)","v":{"$error":"#REF!"}},{"$f":"SUM(#REF!)","v":{"$error":"#REF!"}},{"$f":"SUM(#REF!)","v":{"$error":"#REF!"}},{"$f":"SUM(#REF!)","v":{"$error":"#REF!"}},{"$f":"SUM(#REF!)","v":{"$error":"#REF!"}},{"$f":"SUM(#REF!)","v":{"$error":"#REF!"}},{"$f":"SUM(#REF!)","v":{"$error":"#REF!"}},{"$f":"SUM(#REF!)","v":{"$error":"#REF!"}},{"$f":"SUM(#REF!)","v":{"$error":"#REF!"}},{"$f":"SUM(#REF!)","v":{"$error":"#REF!"}},{"$f":"SUM(#REF!)","v":{"$error":"#REF!"}},{"$f":"SUM(#REF!)","v":{"$error":"#REF!"}},{"$f":"SUM(#REF!)","v":{"$error":"#REF!"}},{"$f":"SUM(#REF!)","v":{"$error":"#REF!"}},{"$f":"SUM(#REF!)","v":{"$error":"#REF!"}},{"$f":"SUM(#REF!)","v":{"$error":"#REF!"}},{"$f":"SUM(#REF!)","v":{"$error":"#REF!"}},{"$f":"SUM(#REF!)","v":{"$error":"#REF!"}},{"$f":"SUM(#REF!)","v":{"$error":"#REF!"}},{"$f":"SUM(#REF!)","v":{"$error":"#REF!"}},{"$f":"SUM(#REF!)","v":{"$error":"#REF!"}},{"$f":"SUM(#REF!)","v":{"$error":"#REF!"}},{"$f":"SUM(#REF!)","v":{"$error":"#REF!"}},{"$f":"SUM(#REF!)","v":{"$error":"#REF!"}},{"$f":"SUM(#REF!)","v":{"$error":"#REF!"}},{"$f":"SUM(#REF!)","v":{"$error":"#REF!"}},{"$f":"SUM(#REF!)","v":{"$error":"#REF!"}},{"$f":"SUM(#REF!)","v":{"$error":"#REF!"}},{"$f":"SUM(#REF!)","v":{"$error":"#REF!"}},{"$f":"SUM(#REF!)","v":{"$error":"#REF!"}},{"$f":"SUM(#REF!)","v":{"$error":"#REF!"}},{"$f":"SUM(#REF!)","v":{"$error":"#REF!"}},{"$f":"SUM(#REF!)","v":{"$error":"#REF!"}},{"$f":"SUM(#REF!)","v":{"$error":"#REF!"}},{"$f":"SUM(#REF!)","v":{"$error":"#REF!"}},{"$f":"SUM(#REF!)","v":{"$error":"#REF!"}},{"$f":"SUM(#REF!)","v":{"$error":"#REF!"}},{"$f":"SUM(#REF!)","v":{"$error":"#REF!"}},{"$f":"SUM(#REF!)","v":{"$error":"#REF!"}},{"$f":"SUM(#REF!)","v":{"$error":"#REF!"}},{"$f":"SUM(#REF!)","v":{"$error":"#REF!"}},{"$f":"SUM(#REF!)","v":{"$error":"#REF!"}},{"$f":"SUM(#REF!)","v":{"$error":"#REF!"}},{"$f":"SUM(#REF!)","v":{"$error":"#REF!"}},{"$f":"SUM(#REF!)","v":{"$error":"#REF!"}},{"$f":"SUM(#REF!)","v":{"$error":"#REF!"}},{"$f":"SUM(#REF!)","v":{"$error":"#REF!"}},{"$f":"SUM(#REF!)","v":{"$error":"#REF!"}},{"$f":"SUM(#REF!)","v":{"$error":"#REF!"}},{"$f":"SUM(#REF!)","v":{"$error":"#REF!"}},{"$f":"SUM(#REF!)","v":{"$error":"#REF!"}},{"$f":"SUM(#REF!)","v":{"$error":"#REF!"}},{"$f":"SUM(#REF!)","v":{"$error":"#REF!"}},{"$f":"SUM(#REF!)","v":{"$error":"#REF!"}},{"$f":"SUM(#REF!)","v":{"$error":"#REF!"}},{"$f":"SUM(#REF!)","v":{"$error":"#REF!"}},{"$f":"SUM(#REF!)","v":{"$error":"#REF!"}},{"$f":"SUM(#REF!)","v":{"$error":"#REF!"}},{"$f":"SUM(#REF!)","v":{"$error":"#REF!"}},{"$f":"SUM(#REF!)","v":{"$error":"#REF!"}},{"$f":"SUM(#REF!)","v":{"$error":"#REF!"}},{"$f":"SUM(#REF!)","v":{"$error":"#REF!"}},{"$f":"SUM(#REF!)","v":{"$error":"#REF!"}},{"$f":"SUM(#REF!)","v":{"$error":"#REF!"}},{"$f":"SUM(#REF!)","v":{"$error":"#REF!"}},{"$f":"SUM(#REF!)","v":{"$error":"#REF!"}},{"$f":"SUM(#REF!)","v":{"$error":"#REF!"}},{"$f":"SUM(#REF!)","v":{"$error":"#REF!"}},{"$f":"SUM(#REF!)","v":{"$error":"#REF!"}},{"$f":"SUM(#REF!)","v":{"$error":"#REF!"}},{"$f":"SUM(#REF!)","v":{"$error":"#REF!"}},{"$f":"SUM(#REF!)","v":{"$error":"#REF!"}},{"$f":"SUM(#REF!)","v":{"$error":"#REF!"}},{"$f":"SUM(#REF!)","v":{"$error":"#REF!"}},{"$f":"SUM(#REF!)","v":{"$error":"#REF!"}},{"$f":"SUM(#REF!)","v":{"$error":"#REF!"}},{"$f":"SUM(#REF!)","v":{"$error":"#REF!"}},{"$f":"SUM(#REF!)","v":{"$error":"#REF!"}},{"$f":"SUM(#REF!)","v":{"$error":"#REF!"}},{"$f":"SUM(#REF!)","v":{"$error":"#REF!"}},{"$f":"SUM(#REF!)","v":{"$error":"#REF!"}},{"$f":"SUM(#REF!)","v":{"$error":"#REF!"}},{"$f":"SUM(#REF!)","v":{"$error":"#REF!"}},{"$f":"SUM(#REF!)","v":{"$error":"#REF!"}},{"$f":"SUM(#REF!)","v":{"$error":"#REF!"}},{"$f":"SUM(#REF!)","v":{"$error":"#REF!"}},{"$f":"SUM(#REF!)","v":{"$error":"#REF!"}},{"$f":"SUM(#REF!)","v":{"$error":"#REF!"}},{"$f":"SUM(#REF!)","v":{"$error":"#REF!"}},{"$f":"SUM(#REF!)","v":{"$error":"#REF!"}},{"$f":"SUM(#REF!)","v":{"$error":"#REF!"}},{"$f":"SUM(#REF!)","v":{"$error":"#REF!"}},{"$f":"SUM(#REF!)","v":{"$error":"#REF!"}},{"$f":"SUM(#REF!)","v":{"$error":"#REF!"}},{"$f":"SUM(#REF!)","v":{"$error":"#REF!"}},{"$f":"SUM(#REF!)","v":{"$error":"#REF!"}},{"$f":"SUM(#REF!)","v":{"$error":"#REF!"}},{"$f":"SUM(#REF!)","v":{"$error":"#REF!"}},{"$f":"SUM(#REF!)","v":{"$error":"#REF!"}},{"$f":"SUM(#REF!)","v":{"$error":"#REF!"}},{"$f":"SUM(#REF!)","v":{"$error":"#REF!"}},{"$f":"SUM(#REF!)","v":{"$error":"#REF!"}},{"$f":"SUM(#REF!)","v":{"$error":"#REF!"}},{"$f":"SUM(#REF!)","v":{"$error":"#REF!"}},{"$f":"SUM(#REF!)","v":{"$error":"#REF!"}},{"$f":"SUM(#REF!)","v":{"$error":"#REF!"}},{"$f":"SUM(#REF!)","v":{"$error":"#REF!"}},{"$f":"SUM(#REF!)","v":{"$error":"#REF!"}},{"$f":"SUM(#REF!)","v":{"$error":"#REF!"}},{"$f":"SUM(#REF!)","v":{"$error":"#REF!"}},{"$f":"SUM(#REF!)","v":{"$error":"#REF!"}},{"$f":"SUM(#REF!)","v":{"$error":"#REF!"}},{"$f":"SUM(#REF!)","v":{"$error":"#REF!"}},{"$f":"SUM(#REF!)","v":{"$error":"#REF!"}},{"$f":"SUM(#REF!)","v":{"$error":"#REF!"}},{"$f":"SUM(#REF!)","v":{"$error":"#REF!"}},{"$f":"SUM(#REF!)","v":{"$error":"#REF!"}},{"$f":"SUM(#REF!)","v":{"$error":"#REF!"}},{"$f":"SUM(#REF!)","v":{"$error":"#REF!"}},{"$f":"SUM(#REF!)","v":{"$error":"#REF!"}},{"$f":"SUM(#REF!)","v":{"$error":"#REF!"}},{"$f":"SUM(#REF!)","v":{"$error":"#REF!"}},{"$f":"SUM(#REF!)","v":{"$error":"#REF!"}},{"$f":"SUM(#REF!)","v":{"$error":"#REF!"}},{"$f":"SUM(#REF!)","v":{"$error":"#REF!"}},{"$f":"SUM(#REF!)","v":{"$error":"#REF!"}},{"$f":"SUM(#REF!)","v":{"$error":"#REF!"}},{"$f":"SUM(#REF!)","v":{"$error":"#REF!"}},{"$f":"SUM(#REF!)","v":{"$error":"#REF!"}},{"$f":"SUM(#REF!)","v":{"$error":"#REF!"}},{"$f":"SUM(#REF!)","v":{"$error":"#REF!"}},{"$f":"SUM(#REF!)","v":{"$error":"#REF!"}},{"$f":"SUM(#REF!)","v":{"$error":"#REF!"}},{"$f":"SUM(#REF!)","v":{"$error":"#REF!"}},{"$f":"SUM(#REF!)","v":{"$error":"#REF!"}},{"$f":"SUM(#REF!)","v":{"$error":"#REF!"}},{"$f":"SUM(#REF!)","v":{"$error":"#REF!"}},{"$f":"SUM(#REF!)","v":{"$error":"#REF!"}},{"$f":"SUM(#REF!)","v":{"$error":"#REF!"}},{"$f":"SUM(#REF!)","v":{"$error":"#REF!"}},{"$f":"SUM(#REF!)","v":{"$error":"#REF!"}},{"$f":"SUM(#REF!)","v":{"$error":"#REF!"}},{"$f":"SUM(#REF!)","v":{"$error":"#REF!"}},{"$f":"SUM(#REF!)","v":{"$error":"#REF!"}},{"$f":"SUM(#REF!)","v":{"$error":"#REF!"}},{"$f":"SUM(#REF!)","v":{"$error":"#REF!"}},{"$f":"SUM(#REF!)","v":{"$error":"#REF!"}},{"$f":"SUM(#REF!)","v":{"$error":"#REF!"}},{"$f":"SUM(#REF!)","v":{"$error":"#REF!"}},{"$f":"SUM(#REF!)","v":{"$error":"#REF!"}},{"$f":"SUM(#REF!)","v":{"$error":"#REF!"}},{"$f":"SUM(#REF!)","v":{"$error":"#REF!"}},{"$f":"SUM(#REF!)","v":{"$error":"#REF!"}},{"$f":"SUM(#REF!)","v":{"$error":"#REF!"}},{"$f":"SUM(#REF!)","v":{"$error":"#REF!"}},{"$f":"SUM(#REF!)","v":{"$error":"#REF!"}},{"$f":"SUM(#REF!)","v":{"$error":"#REF!"}},{"$f":"SUM(#REF!)","v":{"$error":"#REF!"}},{"$f":"SUM(#REF!)","v":{"$error":"#REF!"}},{"$f":"SUM(#REF!)","v":{"$error":"#REF!"}},{"$f":"SUM(#REF!)","v":{"$error":"#REF!"}},{"$f":"SUM(#REF!)","v":{"$error":"#REF!"}},{"$f":"SUM(#REF!)","v":{"$error":"#REF!"}},{"$f":"SUM(#REF!)","v":{"$error":"#REF!"}},{"$f":"SUM(#REF!)","v":{"$error":"#REF!"}},{"$f":"SUM(#REF!)","v":{"$error":"#REF!"}},{"$f":"SUM(#REF!)","v":{"$error":"#REF!"}},{"$f":"SUM(#REF!)","v":{"$error":"#REF!"}},{"$f":"SUM(#REF!)","v":{"$error":"#REF!"}},{"$f":"SUM(#REF!)","v":{"$error":"#REF!"}},{"$f":"SUM(#REF!)","v":{"$error":"#REF!"}},{"$f":"SUM(#REF!)","v":{"$error":"#REF!"}},{"$f":"SUM(#REF!)","v":{"$error":"#REF!"}},{"$f":"SUM(#REF!)","v":{"$error":"#REF!"}},{"$f":"SUM(#REF!)","v":{"$error":"#REF!"}},{"$f":"SUM(#REF!)","v":{"$error":"#REF!"}},{"$f":"SUM(#REF!)","v":{"$error":"#REF!"}},{"$f":"SUM(#REF!)","v":{"$error":"#REF!"}},{"$f":"SUM(#REF!)","v":{"$error":"#REF!"}},{"$f":"SUM(#REF!)","v":{"$error":"#REF!"}},{"$f":"SUM(#REF!)","v":{"$error":"#REF!"}},{"$f":"SUM(#REF!)","v":{"$error":"#REF!"}},{"$f":"SUM(#REF!)","v":{"$error":"#REF!"}},{"$f":"SUM(#REF!)","v":{"$error":"#REF!"}},{"$f":"SUM(#REF!)","v":{"$error":"#REF!"}},{"$f":"SUM(#REF!)","v":{"$error":"#REF!"}},{"$f":"SUM(#REF!)","v":{"$error":"#REF!"}},{"$f":"SUM(#REF!)","v":{"$error":"#REF!"}},{"$f":"SUM(#REF!)","v":{"$error":"#REF!"}},{"$f":"SUM(#REF!)","v":{"$error":"#REF!"}},{"$f":"SUM(#REF!)","v":{"$error":"#REF!"}},{"$f":"SUM(#REF!)","v":{"$error":"#REF!"}},{"$f":"SUM(#REF!)","v":{"$error":"#REF!"}},{"$f":"SUM(#REF!)","v":{"$error":"#REF!"}},{"$f":"SUM(#REF!)","v":{"$error":"#REF!"}},{"$f":"SUM(#REF!)","v":{"$error":"#REF!"}},{"$f":"SUM(#REF!)","v":{"$error":"#REF!"}},{"$f":"SUM(#REF!)","v":{"$error":"#REF!"}},{"$f":"SUM(#REF!)","v":{"$error":"#REF!"}},{"$f":"SUM(#REF!)","v":{"$error":"#REF!"}},{"$f":"SUM(#REF!)","v":{"$error":"#REF!"}},{"$f":"SUM(#REF!)","v":{"$error":"#REF!"}},{"$f":"SUM(#REF!)","v":{"$error":"#REF!"}},{"$f":"SUM(#REF!)","v":{"$error":"#REF!"}},{"$f":"SUM(#REF!)","v":{"$error":"#REF!"}},{"$f":"SUM(#REF!)","v":{"$error":"#REF!"}},{"$f":"SUM(#REF!)","v":{"$error":"#REF!"}},{"$f":"SUM(#REF!)","v":{"$error":"#REF!"}},{"$f":"SUM(#REF!)","v":{"$error":"#REF!"}},{"$f":"SUM(#REF!)","v":{"$error":"#REF!"}},{"$f":"SUM(#REF!)","v":{"$error":"#REF!"}},{"$f":"SUM(#REF!)","v":{"$error":"#REF!"}},{"$f":"SUM(#REF!)","v":{"$error":"#REF!"}},{"$f":"SUM(#REF!)","v":{"$error":"#REF!"}},{"$f":"SUM(#REF!)","v":{"$error":"#REF!"}},{"$f":"SUM(#REF!)","v":{"$error":"#REF!"}},{"$f":"SUM(#REF!)","v":{"$error":"#REF!"}},{"$f":"SUM(#REF!)","v":{"$error":"#REF!"}},{"$f":"SUM(#REF!)","v":{"$error":"#REF!"}},{"$f":"SUM(#REF!)","v":{"$error":"#REF!"}},{"$f":"SUM(#REF!)","v":{"$error":"#REF!"}},{"$f":"SUM(#REF!)","v":{"$error":"#REF!"}},{"$f":"SUM(#REF!)","v":{"$error":"#REF!"}},{"$f":"SUM(#REF!)","v":{"$error":"#REF!"}},{"$f":"SUM(#REF!)","v":{"$error":"#REF!"}},{"$f":"SUM(#REF!)","v":{"$error":"#REF!"}},{"$f":"SUM(#REF!)","v":{"$error":"#REF!"}},{"$f":"SUM(#REF!)","v":{"$error":"#REF!"}},{"$f":"SUM(#REF!)","v":{"$error":"#REF!"}},{"$f":"SUM(#REF!)","v":{"$error":"#REF!"}},{"$f":"SUM(#REF!)","v":{"$error":"#REF!"}},{"$f":"SUM(#REF!)","v":{"$error":"#REF!"}},{"$f":"SUM(#REF!)","v":{"$error":"#REF!"}},{"$f":"SUM(#REF!)","v":{"$error":"#REF!"}},{"$f":"SUM(#REF!)","v":{"$error":"#REF!"}},{"$f":"SUM(#REF!)","v":{"$error":"#REF!"}},{"$f":"SUM(#REF!)","v":{"$error":"#REF!"}},{"$f":"SUM(#REF!)","v":{"$error":"#REF!"}},{"$f":"SUM(#REF!)","v":{"$error":"#REF!"}},{"$f":"SUM(#REF!)","v":{"$error":"#REF!"}},{"$f":"SUM(#REF!)","v":{"$error":"#REF!"}},{"$f":"SUM(#REF!)","v":{"$error":"#REF!"}},{"$f":"SUM(#REF!)","v":{"$error":"#REF!"}},{"$f":"SUM(#REF!)","v":{"$error":"#REF!"}},{"$f":"SUM(#REF!)","v":{"$error":"#REF!"}},{"$f":"SUM(#REF!)","v":{"$error":"#REF!"}},{"$f":"SUM(#REF!)","v":{"$error":"#REF!"}},{"$f":"SUM(#REF!)","v":{"$error":"#REF!"}},{"$f":"SUM(#REF!)","v":{"$error":"#REF!"}},{"$f":"SUM(#REF!)","v":{"$error":"#REF!"}},{"$f":"SUM(#REF!)","v":{"$error":"#REF!"}},{"$f":"SUM(#REF!)","v":{"$error":"#REF!"}},{"$f":"SUM(#REF!)","v":{"$error":"#REF!"}},{"$f":"SUM(#REF!)","v":{"$error":"#REF!"}},{"$f":"SUM(#REF!)","v":{"$error":"#REF!"}},{"$f":"SUM(#REF!)","v":{"$error":"#REF!"}},{"$f":"SUM(#REF!)","v":{"$error":"#REF!"}},{"$f":"SUM(#REF!)","v":{"$error":"#REF!"}},{"$f":"SUM(#REF!)","v":{"$error":"#REF!"}},{"$f":"SUM(#REF!)","v":{"$error":"#REF!"}},{"$f":"SUM(#REF!)","v":{"$error":"#REF!"}},{"$f":"SUM(#REF!)","v":{"$error":"#REF!"}},{"$f":"SUM(#REF!)","v":{"$error":"#REF!"}},{"$f":"SUM(#REF!)","v":{"$error":"#REF!"}},{"$f":"SUM(#REF!)","v":{"$error":"#REF!"}},{"$f":"SUM(#REF!)","v":{"$error":"#REF!"}},{"$f":"SUM(#REF!)","v":{"$error":"#REF!"}},{"$f":"SUM(#REF!)","v":{"$error":"#REF!"}},{"$f":"SUM(#REF!)","v":{"$error":"#REF!"}},{"$f":"SUM(#REF!)","v":{"$error":"#REF!"}},{"$f":"SUM(#REF!)","v":{"$error":"#REF!"}},{"$f":"SUM(#REF!)","v":{"$error":"#REF!"}},{"$f":"SUM(#REF!)","v":{"$error":"#REF!"}},{"$f":"SUM(#REF!)","v":{"$error":"#REF!"}},{"$f":"SUM(#REF!)","v":{"$error":"#REF!"}},{"$f":"SUM(#REF!)","v":{"$error":"#REF!"}},{"$f":"SUM(#REF!)","v":{"$error":"#REF!"}},{"$f":"SUM(#REF!)","v":{"$error":"#REF!"}},{"$f":"SUM(#REF!)","v":{"$error":"#REF!"}},{"$f":"SUM(#REF!)","v":{"$error":"#REF!"}},{"$f":"SUM(#REF!)","v":{"$error":"#REF!"}},{"$f":"SUM(#REF!)","v":{"$error":"#REF!"}},{"$f":"SUM(#REF!)","v":{"$error":"#REF!"}},{"$f":"SUM(#REF!)","v":{"$error":"#REF!"}},{"$f":"SUM(#REF!)","v":{"$error":"#REF!"}},{"$f":"SUM(#REF!)","v":{"$error":"#REF!"}},{"$f":"SUM(#REF!)","v":{"$error":"#REF!"}},{"$f":"SUM(#REF!)","v":{"$error":"#REF!"}},{"$f":"SUM(#REF!)","v":{"$error":"#REF!"}},{"$f":"SUM(#REF!)","v":{"$error":"#REF!"}},{"$f":"SUM(#REF!)","v":{"$error":"#REF!"}},{"$f":"SUM(#REF!)","v":{"$error":"#REF!"}},{"$f":"SUM(#REF!)","v":{"$error":"#REF!"}},{"$f":"SUM(#REF!)","v":{"$error":"#REF!"}},{"$f":"SUM(#REF!)","v":{"$error":"#REF!"}},{"$f":"SUM(#REF!)","v":{"$error":"#REF!"}},{"$f":"SUM(#REF!)","v":{"$error":"#REF!"}},{"$f":"SUM(#REF!)","v":{"$error":"#REF!"}},{"$f":"SUM(#REF!)","v":{"$error":"#REF!"}},{"$f":"SUM(#REF!)","v":{"$error":"#REF!"}},{"$f":"SUM(#REF!)","v":{"$error":"#REF!"}},{"$f":"SUM(#REF!)","v":{"$error":"#REF!"}},{"$f":"SUM(#REF!)","v":{"$error":"#REF!"}},{"$f":"SUM(#REF!)","v":{"$error":"#REF!"}},{"$f":"SUM(#REF!)","v":{"$error":"#REF!"}},{"$f":"SUM(#REF!)","v":{"$error":"#REF!"}},{"$f":"SUM(#REF!)","v":{"$error":"#REF!"}},{"$f":"SUM(#REF!)","v":{"$error":"#REF!"}},{"$f":"SUM(#REF!)","v":{"$error":"#REF!"}},{"$f":"SUM(#REF!)","v":{"$error":"#REF!"}},{"$f":"SUM(#REF!)","v":{"$error":"#REF!"}},{"$f":"SUM(#REF!)","v":{"$error":"#REF!"}},{"$f":"SUM(#REF!)","v":{"$error":"#REF!"}},{"$f":"SUM(#REF!)","v":{"$error":"#REF!"}},{"$f":"SUM(#REF!)","v":{"$error":"#REF!"}},{"$f":"SUM(#REF!)","v":{"$error":"#REF!"}},{"$f":"SUM(#REF!)","v":{"$error":"#REF!"}},{"$f":"SUM(#REF!)","v":{"$error":"#REF!"}},{"$f":"SUM(#REF!)","v":{"$error":"#REF!"}},{"$f":"SUM(#REF!)","v":{"$error":"#REF!"}},{"$f":"SUM(#REF!)","v":{"$error":"#REF!"}},{"$f":"SUM(#REF!)","v":{"$error":"#REF!"}},{"$f":"SUM(#REF!)","v":{"$error":"#REF!"}},{"$f":"SUM(#REF!)","v":{"$error":"#REF!"}},{"$f":"SUM(#REF!)","v":{"$error":"#REF!"}},{"$f":"SUM(#REF!)","v":{"$error":"#REF!"}},{"$f":"SUM(#REF!)","v":{"$error":"#REF!"}},{"$f":"SUM(#REF!)","v":{"$error":"#REF!"}},{"$f":"SUM(#REF!)","v":{"$error":"#REF!"}},{"$f":"SUM(#REF!)","v":{"$error":"#REF!"}},{"$f":"SUM(#REF!)","v":{"$error":"#REF!"}},{"$f":"SUM(#REF!)","v":{"$error":"#REF!"}},{"$f":"SUM(#REF!)","v":{"$error":"#REF!"}},{"$f":"SUM(#REF!)","v":{"$error":"#REF!"}},{"$f":"SUM(#REF!)","v":{"$error":"#REF!"}},{"$f":"SUM(#REF!)","v":{"$error":"#REF!"}},{"$f":"SUM(#REF!)","v":{"$error":"#REF!"}},{"$f":"SUM(#REF!)","v":{"$error":"#REF!"}},{"$f":"SUM(#REF!)","v":{"$error":"#REF!"}},{"$f":"SUM(#REF!)","v":{"$error":"#REF!"}},{"$f":"SUM(#REF!)","v":{"$error":"#REF!"}},{"$f":"SUM(#REF!)","v":{"$error":"#REF!"}},{"$f":"SUM(#REF!)","v":{"$error":"#REF!"}},{"$f":"SUM(#REF!)","v":{"$error":"#REF!"}},{"$f":"SUM(#REF!)","v":{"$error":"#REF!"}},{"$f":"SUM(#REF!)","v":{"$error":"#REF!"}},{"$f":"SUM(#REF!)","v":{"$error":"#REF!"}},{"$f":"SUM(#REF!)","v":{"$error":"#REF!"}},{"$f":"SUM(#REF!)","v":{"$error":"#REF!"}},{"$f":"SUM(#REF!)","v":{"$error":"#REF!"}},{"$f":"SUM(#REF!)","v":{"$error":"#REF!"}},{"$f":"SUM(#REF!)","v":{"$error":"#REF!"}},{"$f":"SUM(#REF!)","v":{"$error":"#REF!"}},{"$f":"SUM(#REF!)","v":{"$error":"#REF!"}},{"$f":"SUM(#REF!)","v":{"$error":"#REF!"}},{"$f":"SUM(#REF!)","v":{"$error":"#REF!"}},{"$f":"SUM(#REF!)","v":{"$error":"#REF!"}},{"$f":"SUM(#REF!)","v":{"$error":"#REF!"}},{"$f":"SUM(#REF!)","v":{"$error":"#REF!"}},{"$f":"SUM(#REF!)","v":{"$error":"#REF!"}},{"$f":"SUM(#REF!)","v":{"$error":"#REF!"}},{"$f":"SUM(#REF!)","v":{"$error":"#REF!"}},{"$f":"SUM(#REF!)","v":{"$error":"#REF!"}},{"$f":"SUM(#REF!)","v":{"$error":"#REF!"}},{"$f":"SUM(#REF!)","v":{"$error":"#REF!"}},{"$f":"SUM(#REF!)","v":{"$error":"#REF!"}},{"$f":"SUM(#REF!)","v":{"$error":"#REF!"}},{"$f":"SUM(#REF!)","v":{"$error":"#REF!"}},{"$f":"SUM(#REF!)","v":{"$error":"#REF!"}},{"$f":"SUM(#REF!)","v":{"$error":"#REF!"}},{"$f":"SUM(#REF!)","v":{"$error":"#REF!"}},{"$f":"SUM(#REF!)","v":{"$error":"#REF!"}},{"$f":"SUM(#REF!)","v":{"$error":"#REF!"}},{"$f":"SUM(#REF!)","v":{"$error":"#REF!"}},{"$f":"SUM(#REF!)","v":{"$error":"#REF!"}},{"$f":"SUM(#REF!)","v":{"$error":"#REF!"}},{"$f":"SUM(#REF!)","v":{"$error":"#REF!"}},{"$f":"SUM(#REF!)","v":{"$error":"#REF!"}},{"$f":"SUM(#REF!)","v":{"$error":"#REF!"}},{"$f":"SUM(#REF!)","v":{"$error":"#REF!"}},{"$f":"SUM(#REF!)","v":{"$error":"#REF!"}},{"$f":"SUM(#REF!)","v":{"$error":"#REF!"}},{"$f":"SUM(#REF!)","v":{"$error":"#REF!"}},{"$f":"SUM(#REF!)","v":{"$error":"#REF!"}},{"$f":"SUM(#REF!)","v":{"$error":"#REF!"}},{"$f":"SUM(#REF!)","v":{"$error":"#REF!"}},{"$f":"SUM(#REF!)","v":{"$error":"#REF!"}},{"$f":"SUM(#REF!)","v":{"$error":"#REF!"}},{"$f":"SUM(#REF!)","v":{"$error":"#REF!"}},{"$f":"SUM(#REF!)","v":{"$error":"#REF!"}},{"$f":"SUM(#REF!)","v":{"$error":"#REF!"}},{"$f":"SUM(#REF!)","v":{"$error":"#REF!"}},{"$f":"SUM(#REF!)","v":{"$error":"#REF!"}},{"$f":"SUM(#REF!)","v":{"$error":"#REF!"}},{"$f":"SUM(#REF!)","v":{"$error":"#REF!"}},{"$f":"SUM(#REF!)","v":{"$error":"#REF!"}},{"$f":"SUM(#REF!)","v":{"$error":"#REF!"}},{"$f":"SUM(#REF!)","v":{"$error":"#REF!"}},{"$f":"SUM(#REF!)","v":{"$error":"#REF!"}},{"$f":"SUM(#REF!)","v":{"$error":"#REF!"}},{"$f":"SUM(#REF!)","v":{"$error":"#REF!"}},{"$f":"SUM(#REF!)","v":{"$error":"#REF!"}},{"$f":"SUM(#REF!)","v":{"$error":"#REF!"}},{"$f":"SUM(#REF!)","v":{"$error":"#REF!"}},{"$f":"SUM(#REF!)","v":{"$error":"#REF!"}},{"$f":"SUM(#REF!)","v":{"$error":"#REF!"}},{"$f":"SUM(#REF!)","v":{"$error":"#REF!"}},{"$f":"SUM(#REF!)","v":{"$error":"#REF!"}},{"$f":"SUM(#REF!)","v":{"$error":"#REF!"}},{"$f":"SUM(#REF!)","v":{"$error":"#REF!"}},{"$f":"SUM(#REF!)","v":{"$error":"#REF!"}},{"$f":"SUM(#REF!)","v":{"$error":"#REF!"}},{"$f":"SUM(#REF!)","v":{"$error":"#REF!"}},{"$f":"SUM(#REF!)","v":{"$error":"#REF!"}},{"$f":"SUM(#REF!)","v":{"$error":"#REF!"}},{"$f":"SUM(#REF!)","v":{"$error":"#REF!"}},{"$f":"SUM(#REF!)","v":{"$error":"#REF!"}},{"$f":"SUM(#REF!)","v":{"$error":"#REF!"}},{"$f":"SUM(#REF!)","v":{"$error":"#REF!"}},{"$f":"SUM(#REF!)","v":{"$error":"#REF!"}},{"$f":"SUM(#REF!)","v":{"$error":"#REF!"}},{"$f":"SUM(#REF!)","v":{"$error":"#REF!"}},{"$f":"SUM(#REF!)","v":{"$error":"#REF!"}},{"$f":"SUM(#REF!)","v":{"$error":"#REF!"}},{"$f":"SUM(#REF!)","v":{"$error":"#REF!"}},{"$f":"SUM(#REF!)","v":{"$error":"#REF!"}},{"$f":"SUM(#REF!)","v":{"$error":"#REF!"}},{"$f":"SUM(#REF!)","v":{"$error":"#REF!"}},{"$f":"SUM(#REF!)","v":{"$error":"#REF!"}},{"$f":"SUM(#REF!)","v":{"$error":"#REF!"}},{"$f":"SUM(#REF!)","v":{"$error":"#REF!"}},{"$f":"SUM(#REF!)","v":{"$error":"#REF!"}},{"$f":"SUM(#REF!)","v":{"$error":"#REF!"}},{"$f":"SUM(#REF!)","v":{"$error":"#REF!"}},{"$f":"SUM(#REF!)","v":{"$error":"#REF!"}},{"$f":"SUM(#REF!)","v":{"$error":"#REF!"}},{"$f":"SUM(#REF!)","v":{"$error":"#REF!"}},{"$f":"SUM(#REF!)","v":{"$error":"#REF!"}},{"$f":"SUM(#REF!)","v":{"$error":"#REF!"}},{"$f":"SUM(#REF!)","v":{"$error":"#REF!"}},{"$f":"SUM(#REF!)","v":{"$error":"#REF!"}},{"$f":"SUM(#REF!)","v":{"$error":"#REF!"}},{"$f":"SUM(#REF!)","v":{"$error":"#REF!"}},{"$f":"SUM(#REF!)","v":{"$error":"#REF!"}},{"$f":"SUM(#REF!)","v":{"$error":"#REF!"}},{"$f":"SUM(#REF!)","v":{"$error":"#REF!"}},{"$f":"SUM(#REF!)","v":{"$error":"#REF!"}},{"$f":"SUM(#REF!)","v":{"$error":"#REF!"}},{"$f":"SUM(#REF!)","v":{"$error":"#REF!"}},{"$f":"SUM(#REF!)","v":{"$error":"#REF!"}},{"$f":"SUM(#REF!)","v":{"$error":"#REF!"}},{"$f":"SUM(#REF!)","v":{"$error":"#REF!"}},{"$f":"SUM(#REF!)","v":{"$error":"#REF!"}},{"$f":"SUM(#REF!)","v":{"$error":"#REF!"}},{"$f":"SUM(#REF!)","v":{"$error":"#REF!"}},{"$f":"SUM(#REF!)","v":{"$error":"#REF!"}},{"$f":"SUM(#REF!)","v":{"$error":"#REF!"}},{"$f":"SUM(#REF!)","v":{"$error":"#REF!"}},{"$f":"SUM(#REF!)","v":{"$error":"#REF!"}},{"$f":"SUM(#REF!)","v":{"$error":"#REF!"}},{"$f":"SUM(#REF!)","v":{"$error":"#REF!"}},{"$f":"SUM(#REF!)","v":{"$error":"#REF!"}},{"$f":"SUM(#REF!)","v":{"$error":"#REF!"}},{"$f":"SUM(#REF!)","v":{"$error":"#REF!"}},{"$f":"SUM(#REF!)","v":{"$error":"#REF!"}},{"$f":"SUM(#REF!)","v":{"$error":"#REF!"}},{"$f":"SUM(#REF!)","v":{"$error":"#REF!"}},{"$f":"SUM(#REF!)","v":{"$error":"#REF!"}},{"$f":"SUM(#REF!)","v":{"$error":"#REF!"}},{"$f":"SUM(#REF!)","v":{"$error":"#REF!"}},{"$f":"SUM(#REF!)","v":{"$error":"#REF!"}},{"$f":"SUM(#REF!)","v":{"$error":"#REF!"}},{"$f":"SUM(#REF!)","v":{"$error":"#REF!"}},{"$f":"SUM(#REF!)","v":{"$error":"#REF!"}},{"$f":"SUM(#REF!)","v":{"$error":"#REF!"}},{"$f":"SUM(#REF!)","v":{"$error":"#REF!"}},{"$f":"SUM(#REF!)","v":{"$error":"#REF!"}},{"$f":"SUM(#REF!)","v":{"$error":"#REF!"}},{"$f":"SUM(#REF!)","v":{"$error":"#REF!"}},{"$f":"SUM(#REF!)","v":{"$error":"#REF!"}},{"$f":"SUM(#REF!)","v":{"$error":"#REF!"}},{"$f":"SUM(#REF!)","v":{"$error":"#REF!"}},{"$f":"SUM(#REF!)","v":{"$error":"#REF!"}},{"$f":"SUM(#REF!)","v":{"$error":"#REF!"}},{"$f":"SUM(#REF!)","v":{"$error":"#REF!"}},{"$f":"SUM(#REF!)","v":{"$error":"#REF!"}},{"$f":"SUM(#REF!)","v":{"$error":"#REF!"}},{"$f":"SUM(#REF!)","v":{"$error":"#REF!"}},{"$f":"SUM(#REF!)","v":{"$error":"#REF!"}},{"$f":"SUM(#REF!)","v":{"$error":"#REF!"}},{"$f":"SUM(#REF!)","v":{"$error":"#REF!"}},{"$f":"SUM(#REF!)","v":{"$error":"#REF!"}},{"$f":"SUM(#REF!)","v":{"$error":"#REF!"}},{"$f":"SUM(#REF!)","v":{"$error":"#REF!"}},{"$f":"SUM(#REF!)","v":{"$error":"#REF!"}},{"$f":"SUM(#REF!)","v":{"$error":"#REF!"}},{"$f":"SUM(#REF!)","v":{"$error":"#REF!"}},{"$f":"SUM(#REF!)","v":{"$error":"#REF!"}},{"$f":"SUM(#REF!)","v":{"$error":"#REF!"}},{"$f":"SUM(#REF!)","v":{"$error":"#REF!"}},{"$f":"SUM(#REF!)","v":{"$error":"#REF!"}},{"$f":"SUM(#REF!)","v":{"$error":"#REF!"}},{"$f":"SUM(#REF!)","v":{"$error":"#REF!"}},{"$f":"SUM(#REF!)","v":{"$error":"#REF!"}},{"$f":"SUM(#REF!)","v":{"$error":"#REF!"}},{"$f":"SUM(#REF!)","v":{"$error":"#REF!"}},{"$f":"SUM(#REF!)","v":{"$error":"#REF!"}},{"$f":"SUM(#REF!)","v":{"$error":"#REF!"}},{"$f":"SUM(#REF!)","v":{"$error":"#REF!"}},{"$f":"SUM(#REF!)","v":{"$error":"#REF!"}},{"$f":"SUM(#REF!)","v":{"$error":"#REF!"}},{"$f":"SUM(#REF!)","v":{"$error":"#REF!"}},{"$f":"SUM(#REF!)","v":{"$error":"#REF!"}},{"$f":"SUM(#REF!)","v":{"$error":"#REF!"}},{"$f":"SUM(#REF!)","v":{"$error":"#REF!"}},{"$f":"SUM(#REF!)","v":{"$error":"#REF!"}},{"$f":"SUM(#REF!)","v":{"$error":"#REF!"}},{"$f":"SUM(#REF!)","v":{"$error":"#REF!"}},{"$f":"SUM(#REF!)","v":{"$error":"#REF!"}},{"$f":"SUM(#REF!)","v":{"$error":"#REF!"}},{"$f":"SUM(#REF!)","v":{"$error":"#REF!"}},{"$f":"SUM(#REF!)","v":{"$error":"#REF!"}},{"$f":"SUM(#REF!)","v":{"$error":"#REF!"}},{"$f":"SUM(#REF!)","v":{"$error":"#REF!"}},{"$f":"SUM(#REF!)","v":{"$error":"#REF!"}},{"$f":"SUM(#REF!)","v":{"$error":"#REF!"}},{"$f":"SUM(#REF!)","v":{"$error":"#REF!"}},{"$f":"SUM(#REF!)","v":{"$error":"#REF!"}},{"$f":"SUM(#REF!)","v":{"$error":"#REF!"}},{"$f":"SUM(#REF!)","v":{"$error":"#REF!"}},{"$f":"SUM(#REF!)","v":{"$error":"#REF!"}},{"$f":"SUM(#REF!)","v":{"$error":"#REF!"}},{"$f":"SUM(#REF!)","v":{"$error":"#REF!"}},{"$f":"SUM(#REF!)","v":{"$error":"#REF!"}},{"$f":"SUM(#REF!)","v":{"$error":"#REF!"}},{"$f":"SUM(#REF!)","v":{"$error":"#REF!"}},{"$f":"SUM(#REF!)","v":{"$error":"#REF!"}},{"$f":"SUM(#REF!)","v":{"$error":"#REF!"}},{"$f":"SUM(#REF!)","v":{"$error":"#REF!"}},{"$f":"SUM(#REF!)","v":{"$error":"#REF!"}},{"$f":"SUM(#REF!)","v":{"$error":"#REF!"}},{"$f":"SUM(#REF!)","v":{"$error":"#REF!"}},{"$f":"SUM(#REF!)","v":{"$error":"#REF!"}},{"$f":"SUM(#REF!)","v":{"$error":"#REF!"}},{"$f":"SUM(#REF!)","v":{"$error":"#REF!"}},{"$f":"SUM(#REF!)","v":{"$error":"#REF!"}},{"$f":"SUM(#REF!)","v":{"$error":"#REF!"}},{"$f":"SUM(#REF!)","v":{"$error":"#REF!"}},{"$f":"SUM(#REF!)","v":{"$error":"#REF!"}},{"$f":"SUM(#REF!)","v":{"$error":"#REF!"}},{"$f":"SUM(#REF!)","v":{"$error":"#REF!"}},{"$f":"SUM(#REF!)","v":{"$error":"#REF!"}},{"$f":"SUM(#REF!)","v":{"$error":"#REF!"}},{"$f":"SUM(#REF!)","v":{"$error":"#REF!"}},{"$f":"SUM(#REF!)","v":{"$error":"#REF!"}},{"$f":"SUM(#REF!)","v":{"$error":"#REF!"}},{"$f":"SUM(#REF!)","v":{"$error":"#REF!"}},{"$f":"SUM(#REF!)","v":{"$error":"#REF!"}},{"$f":"SUM(#REF!)","v":{"$error":"#REF!"}},{"$f":"SUM(#REF!)","v":{"$error":"#REF!"}},{"$f":"SUM(#REF!)","v":{"$error":"#REF!"}},{"$f":"SUM(#REF!)","v":{"$error":"#REF!"}},{"$f":"SUM(#REF!)","v":{"$error":"#REF!"}},{"$f":"SUM(#REF!)","v":{"$error":"#REF!"}},{"$f":"SUM(#REF!)","v":{"$error":"#REF!"}},{"$f":"SUM(#REF!)","v":{"$error":"#REF!"}},{"$f":"SUM(#REF!)","v":{"$error":"#REF!"}},{"$f":"SUM(#REF!)","v":{"$error":"#REF!"}},{"$f":"SUM(#REF!)","v":{"$error":"#REF!"}},{"$f":"SUM(#REF!)","v":{"$error":"#REF!"}},{"$f":"SUM(#REF!)","v":{"$error":"#REF!"}},{"$f":"SUM(#REF!)","v":{"$error":"#REF!"}},{"$f":"SUM(#REF!)","v":{"$error":"#REF!"}},{"$f":"SUM(#REF!)","v":{"$error":"#REF!"}},{"$f":"SUM(#REF!)","v":{"$error":"#REF!"}},{"$f":"SUM(#REF!)","v":{"$error":"#REF!"}},{"$f":"SUM(#REF!)","v":{"$error":"#REF!"}},{"$f":"SUM(#REF!)","v":{"$error":"#REF!"}},{"$f":"SUM(#REF!)","v":{"$error":"#REF!"}},{"$f":"SUM(#REF!)","v":{"$error":"#REF!"}},{"$f":"SUM(#REF!)","v":{"$error":"#REF!"}},{"$f":"SUM(#REF!)","v":{"$error":"#REF!"}},{"$f":"SUM(#REF!)","v":{"$error":"#REF!"}},{"$f":"SUM(#REF!)","v":{"$error":"#REF!"}},{"$f":"SUM(#REF!)","v":{"$error":"#REF!"}},{"$f":"SUM(#REF!)","v":{"$error":"#REF!"}},{"$f":"SUM(#REF!)","v":{"$error":"#REF!"}},{"$f":"SUM(#REF!)","v":{"$error":"#REF!"}},{"$f":"SUM(#REF!)","v":{"$error":"#REF!"}},{"$f":"SUM(#REF!)","v":{"$error":"#REF!"}},{"$f":"SUM(#REF!)","v":{"$error":"#REF!"}},{"$f":"SUM(#REF!)","v":{"$error":"#REF!"}},{"$f":"SUM(#REF!)","v":{"$error":"#REF!"}},{"$f":"SUM(#REF!)","v":{"$error":"#REF!"}},{"$f":"SUM(#REF!)","v":{"$error":"#REF!"}},{"$f":"SUM(#REF!)","v":{"$error":"#REF!"}},{"$f":"SUM(#REF!)","v":{"$error":"#REF!"}},{"$f":"SUM(#REF!)","v":{"$error":"#REF!"}},{"$f":"SUM(#REF!)","v":{"$error":"#REF!"}},{"$f":"SUM(#REF!)","v":{"$error":"#REF!"}},{"$f":"SUM(#REF!)","v":{"$error":"#REF!"}},{"$f":"SUM(#REF!)","v":{"$error":"#REF!"}},{"$f":"SUM(#REF!)","v":{"$error":"#REF!"}},{"$f":"SUM(#REF!)","v":{"$error":"#REF!"}},{"$f":"SUM(#REF!)","v":{"$error":"#REF!"}},{"$f":"SUM(#REF!)","v":{"$error":"#REF!"}},{"$f":"SUM(#REF!)","v":{"$error":"#REF!"}},{"$f":"SUM(#REF!)","v":{"$error":"#REF!"}},{"$f":"SUM(#REF!)","v":{"$error":"#REF!"}},{"$f":"SUM(#REF!)","v":{"$error":"#REF!"}},{"$f":"SUM(#REF!)","v":{"$error":"#REF!"}},{"$f":"SUM(#REF!)","v":{"$error":"#REF!"}},{"$f":"SUM(#REF!)","v":{"$error":"#REF!"}},{"$f":"SUM(#REF!)","v":{"$error":"#REF!"}},{"$f":"SUM(#REF!)","v":{"$error":"#REF!"}},{"$f":"SUM(#REF!)","v":{"$error":"#REF!"}},{"$f":"SUM(#REF!)","v":{"$error":"#REF!"}},{"$f":"SUM(#REF!)","v":{"$error":"#REF!"}},{"$f":"SUM(#REF!)","v":{"$error":"#REF!"}},{"$f":"SUM(#REF!)","v":{"$error":"#REF!"}},{"$f":"SUM(#REF!)","v":{"$error":"#REF!"}},{"$f":"SUM(#REF!)","v":{"$error":"#REF!"}},{"$f":"SUM(#REF!)","v":{"$error":"#REF!"}},{"$f":"SUM(#REF!)","v":{"$error":"#REF!"}},{"$f":"SUM(#REF!)","v":{"$error":"#REF!"}},{"$f":"SUM(#REF!)","v":{"$error":"#REF!"}},{"$f":"SUM(#REF!)","v":{"$error":"#REF!"}},{"$f":"SUM(#REF!)","v":{"$error":"#REF!"}},{"$f":"SUM(#REF!)","v":{"$error":"#REF!"}},{"$f":"SUM(#REF!)","v":{"$error":"#REF!"}},{"$f":"SUM(#REF!)","v":{"$error":"#REF!"}},{"$f":"SUM(#REF!)","v":{"$error":"#REF!"}},{"$f":"SUM(#REF!)","v":{"$error":"#REF!"}},{"$f":"SUM(#REF!)","v":{"$error":"#REF!"}},{"$f":"SUM(#REF!)","v":{"$error":"#REF!"}},{"$f":"SUM(#REF!)","v":{"$error":"#REF!"}},{"$f":"SUM(#REF!)","v":{"$error":"#REF!"}},{"$f":"SUM(#REF!)","v":{"$error":"#REF!"}},{"$f":"SUM(#REF!)","v":{"$error":"#REF!"}},{"$f":"SUM(#REF!)","v":{"$error":"#REF!"}},{"$f":"SUM(#REF!)","v":{"$error":"#REF!"}},{"$f":"SUM(#REF!)","v":{"$error":"#REF!"}},{"$f":"SUM(#REF!)","v":{"$error":"#REF!"}},{"$f":"SUM(#REF!)","v":{"$error":"#REF!"}},{"$f":"SUM(#REF!)","v":{"$error":"#REF!"}},{"$f":"SUM(#REF!)","v":{"$error":"#REF!"}},{"$f":"SUM(#REF!)","v":{"$error":"#REF!"}},{"$f":"SUM(#REF!)","v":{"$error":"#REF!"}},{"$f":"SUM(#REF!)","v":{"$error":"#REF!"}},{"$f":"SUM(#REF!)","v":{"$error":"#REF!"}},{"$f":"SUM(#REF!)","v":{"$error":"#REF!"}},{"$f":"SUM(#REF!)","v":{"$error":"#REF!"}},{"$f":"SUM(#REF!)","v":{"$error":"#REF!"}},{"$f":"SUM(#REF!)","v":{"$error":"#REF!"}},{"$f":"SUM(#REF!)","v":{"$error":"#REF!"}},{"$f":"SUM(#REF!)","v":{"$error":"#REF!"}},{"$f":"SUM(#REF!)","v":{"$error":"#REF!"}},{"$f":"SUM(#REF!)","v":{"$error":"#REF!"}},{"$f":"SUM(#REF!)","v":{"$error":"#REF!"}},{"$f":"SUM(#REF!)","v":{"$error":"#REF!"}},{"$f":"SUM(#REF!)","v":{"$error":"#REF!"}},{"$f":"SUM(#REF!)","v":{"$error":"#REF!"}},{"$f":"SUM(#REF!)","v":{"$error":"#REF!"}},{"$f":"SUM(#REF!)","v":{"$error":"#REF!"}},{"$f":"SUM(#REF!)","v":{"$error":"#REF!"}},{"$f":"SUM(#REF!)","v":{"$error":"#REF!"}},{"$f":"SUM(#REF!)","v":{"$error":"#REF!"}},{"$f":"SUM(#REF!)","v":{"$error":"#REF!"}},{"$f":"SUM(#REF!)","v":{"$error":"#REF!"}},{"$f":"SUM(#REF!)","v":{"$error":"#REF!"}},{"$f":"SUM(#REF!)","v":{"$error":"#REF!"}},{"$f":"SUM(#REF!)","v":{"$error":"#REF!"}},{"$f":"SUM(#REF!)","v":{"$error":"#REF!"}},{"$f":"SUM(#REF!)","v":{"$error":"#REF!"}},{"$f":"SUM(#REF!)","v":{"$error":"#REF!"}},{"$f":"SUM(#REF!)","v":{"$error":"#REF!"}},{"$f":"SUM(#REF!)","v":{"$error":"#REF!"}},{"$f":"SUM(#REF!)","v":{"$error":"#REF!"}},{"$f":"SUM(#REF!)","v":{"$error":"#REF!"}},{"$f":"SUM(#REF!)","v":{"$error":"#REF!"}},{"$f":"SUM(#REF!)","v":{"$error":"#REF!"}},{"$f":"SUM(#REF!)","v":{"$error":"#REF!"}},{"$f":"SUM(#REF!)","v":{"$error":"#REF!"}},{"$f":"SUM(#REF!)","v":{"$error":"#REF!"}},{"$f":"SUM(#REF!)","v":{"$error":"#REF!"}},{"$f":"SUM(#REF!)","v":{"$error":"#REF!"}},{"$f":"SUM(#REF!)","v":{"$error":"#REF!"}},{"$f":"SUM(#REF!)","v":{"$error":"#REF!"}},{"$f":"SUM(#REF!)","v":{"$error":"#REF!"}},{"$f":"SUM(#REF!)","v":{"$error":"#REF!"}},{"$f":"SUM(#REF!)","v":{"$error":"#REF!"}},{"$f":"SUM(#REF!)","v":{"$error":"#REF!"}},{"$f":"SUM(#REF!)","v":{"$error":"#REF!"}},{"$f":"SUM(#REF!)","v":{"$error":"#REF!"}},{"$f":"SUM(#REF!)","v":{"$error":"#REF!"}},{"$f":"SUM(#REF!)","v":{"$error":"#REF!"}},{"$f":"SUM(#REF!)","v":{"$error":"#REF!"}},{"$f":"SUM(#REF!)","v":{"$error":"#REF!"}},{"$f":"SUM(#REF!)","v":{"$error":"#REF!"}},{"$f":"SUM(#REF!)","v":{"$error":"#REF!"}},{"$f":"SUM(#REF!)","v":{"$error":"#REF!"}},{"$f":"SUM(#REF!)","v":{"$error":"#REF!"}},{"$f":"SUM(#REF!)","v":{"$error":"#REF!"}},{"$f":"SUM(#REF!)","v":{"$error":"#REF!"}},{"$f":"SUM(#REF!)","v":{"$error":"#REF!"}},{"$f":"SUM(#REF!)","v":{"$error":"#REF!"}},{"$f":"SUM(#REF!)","v":{"$error":"#REF!"}},{"$f":"SUM(#REF!)","v":{"$error":"#REF!"}},{"$f":"SUM(#REF!)","v":{"$error":"#REF!"}},{"$f":"SUM(#REF!)","v":{"$error":"#REF!"}},{"$f":"SUM(#REF!)","v":{"$error":"#REF!"}},{"$f":"SUM(#REF!)","v":{"$error":"#REF!"}},{"$f":"SUM(#REF!)","v":{"$error":"#REF!"}},{"$f":"SUM(#REF!)","v":{"$error":"#REF!"}},{"$f":"SUM(#REF!)","v":{"$error":"#REF!"}},{"$f":"SUM(#REF!)","v":{"$error":"#REF!"}},{"$f":"SUM(#REF!)","v":{"$error":"#REF!"}},{"$f":"SUM(#REF!)","v":{"$error":"#REF!"}},{"$f":"SUM(#REF!)","v":{"$error":"#REF!"}},{"$f":"SUM(#REF!)","v":{"$error":"#REF!"}},{"$f":"SUM(#REF!)","v":{"$error":"#REF!"}},{"$f":"SUM(#REF!)","v":{"$error":"#REF!"}},{"$f":"SUM(#REF!)","v":{"$error":"#REF!"}},{"$f":"SUM(#REF!)","v":{"$error":"#REF!"}},{"$f":"SUM(#REF!)","v":{"$error":"#REF!"}},{"$f":"SUM(#REF!)","v":{"$error":"#REF!"}},{"$f":"SUM(#REF!)","v":{"$error":"#REF!"}},{"$f":"SUM(#REF!)","v":{"$error":"#REF!"}},{"$f":"SUM(#REF!)","v":{"$error":"#REF!"}},{"$f":"SUM(#REF!)","v":{"$error":"#REF!"}},{"$f":"SUM(#REF!)","v":{"$error":"#REF!"}},{"$f":"SUM(#REF!)","v":{"$error":"#REF!"}},{"$f":"SUM(#REF!)","v":{"$error":"#REF!"}},{"$f":"SUM(#REF!)","v":{"$error":"#REF!"}},{"$f":"SUM(#REF!)","v":{"$error":"#REF!"}},{"$f":"SUM(#REF!)","v":{"$error":"#REF!"}},{"$f":"SUM(#REF!)","v":{"$error":"#REF!"}},{"$f":"SUM(#REF!)","v":{"$error":"#REF!"}},{"$f":"SUM(#REF!)","v":{"$error":"#REF!"}},{"$f":"SUM(#REF!)","v":{"$error":"#REF!"}},{"$f":"SUM(#REF!)","v":{"$error":"#REF!"}},{"$f":"SUM(#REF!)","v":{"$error":"#REF!"}},{"$f":"SUM(#REF!)","v":{"$error":"#REF!"}},{"$f":"SUM(#REF!)","v":{"$error":"#REF!"}},{"$f":"SUM(#REF!)","v":{"$error":"#REF!"}},{"$f":"SUM(#REF!)","v":{"$error":"#REF!"}},{"$f":"SUM(#REF!)","v":{"$error":"#REF!"}},{"$f":"SUM(#REF!)","v":{"$error":"#REF!"}},{"$f":"SUM(#REF!)","v":{"$error":"#REF!"}},{"$f":"SUM(#REF!)","v":{"$error":"#REF!"}},{"$f":"SUM(#REF!)","v":{"$error":"#REF!"}},{"$f":"SUM(#REF!)","v":{"$error":"#REF!"}},{"$f":"SUM(#REF!)","v":{"$error":"#REF!"}},{"$f":"SUM(#REF!)","v":{"$error":"#REF!"}},{"$f":"SUM(#REF!)","v":{"$error":"#REF!"}},{"$f":"SUM(#REF!)","v":{"$error":"#REF!"}},{"$f":"SUM(#REF!)","v":{"$error":"#REF!"}},{"$f":"SUM(#REF!)","v":{"$error":"#REF!"}},{"$f":"SUM(#REF!)","v":{"$error":"#REF!"}},{"$f":"SUM(#REF!)","v":{"$error":"#REF!"}},{"$f":"SUM(#REF!)","v":{"$error":"#REF!"}},{"$f":"SUM(#REF!)","v":{"$error":"#REF!"}},{"$f":"SUM(#REF!)","v":{"$error":"#REF!"}},{"$f":"SUM(#REF!)","v":{"$error":"#REF!"}},{"$f":"SUM(#REF!)","v":{"$error":"#REF!"}},{"$f":"SUM(#REF!)","v":{"$error":"#REF!"}},{"$f":"SUM(#REF!)","v":{"$error":"#REF!"}},{"$f":"SUM(#REF!)","v":{"$error":"#REF!"}},{"$f":"SUM(#REF!)","v":{"$error":"#REF!"}},{"$f":"SUM(#REF!)","v":{"$error":"#REF!"}},{"$f":"SUM(#REF!)","v":{"$error":"#REF!"}},{"$f":"SUM(#REF!)","v":{"$error":"#REF!"}},{"$f":"SUM(#REF!)","v":{"$error":"#REF!"}},{"$f":"SUM(#REF!)","v":{"$error":"#REF!"}},{"$f":"SUM(#REF!)","v":{"$error":"#REF!"}},{"$f":"SUM(#REF!)","v":{"$error":"#REF!"}},{"$f":"SUM(#REF!)","v":{"$error":"#REF!"}},{"$f":"SUM(#REF!)","v":{"$error":"#REF!"}},{"$f":"SUM(#REF!)","v":{"$error":"#REF!"}},{"$f":"SUM(#REF!)","v":{"$error":"#REF!"}},{"$f":"SUM(#REF!)","v":{"$error":"#REF!"}},{"$f":"SUM(#REF!)","v":{"$error":"#REF!"}},{"$f":"SUM(#REF!)","v":{"$error":"#REF!"}},{"$f":"SUM(#REF!)","v":{"$error":"#REF!"}},{"$f":"SUM(#REF!)","v":{"$error":"#REF!"}},{"$f":"SUM(#REF!)","v":{"$error":"#REF!"}},{"$f":"SUM(#REF!)","v":{"$error":"#REF!"}},{"$f":"SUM(#REF!)","v":{"$error":"#REF!"}},{"$f":"SUM(#REF!)","v":{"$error":"#REF!"}},{"$f":"SUM(#REF!)","v":{"$error":"#REF!"}},{"$f":"SUM(#REF!)","v":{"$error":"#REF!"}},{"$f":"SUM(#REF!)","v":{"$error":"#REF!"}},{"$f":"SUM(#REF!)","v":{"$error":"#REF!"}},{"$f":"SUM(#REF!)","v":{"$error":"#REF!"}},{"$f":"SUM(#REF!)","v":{"$error":"#REF!"}},{"$f":"SUM(#REF!)","v":{"$error":"#REF!"}},{"$f":"SUM(#REF!)","v":{"$error":"#REF!"}},{"$f":"SUM(#REF!)","v":{"$error":"#REF!"}},{"$f":"SUM(#REF!)","v":{"$error":"#REF!"}},{"$f":"SUM(#REF!)","v":{"$error":"#REF!"}},{"$f":"SUM(#REF!)","v":{"$error":"#REF!"}},{"$f":"SUM(#REF!)","v":{"$error":"#REF!"}},{"$f":"SUM(#REF!)","v":{"$error":"#REF!"}},{"$f":"SUM(#REF!)","v":{"$error":"#REF!"}},{"$f":"SUM(#REF!)","v":{"$error":"#REF!"}},{"$f":"SUM(#REF!)","v":{"$error":"#REF!"}},{"$f":"SUM(#REF!)","v":{"$error":"#REF!"}},{"$f":"SUM(#REF!)","v":{"$error":"#REF!"}},{"$f":"SUM(#REF!)","v":{"$error":"#REF!"}},{"$f":"SUM(#REF!)","v":{"$error":"#REF!"}},{"$f":"SUM(#REF!)","v":{"$error":"#REF!"}},{"$f":"SUM(#REF!)","v":{"$error":"#REF!"}},{"$f":"SUM(#REF!)","v":{"$error":"#REF!"}},{"$f":"SUM(#REF!)","v":{"$error":"#REF!"}},{"$f":"SUM(#REF!)","v":{"$error":"#REF!"}},{"$f":"SUM(#REF!)","v":{"$error":"#REF!"}},{"$f":"SUM(#REF!)","v":{"$error":"#REF!"}},{"$f":"SUM(#REF!)","v":{"$error":"#REF!"}},{"$f":"SUM(#REF!)","v":{"$error":"#REF!"}},{"$f":"SUM(#REF!)","v":{"$error":"#REF!"}},{"$f":"SUM(#REF!)","v":{"$error":"#REF!"}},{"$f":"SUM(#REF!)","v":{"$error":"#REF!"}},{"$f":"SUM(#REF!)","v":{"$error":"#REF!"}},{"$f":"SUM(#REF!)","v":{"$error":"#REF!"}},{"$f":"SUM(#REF!)","v":{"$error":"#REF!"}},{"$f":"SUM(#REF!)","v":{"$error":"#REF!"}},{"$f":"SUM(#REF!)","v":{"$error":"#REF!"}},{"$f":"SUM(#REF!)","v":{"$error":"#REF!"}},{"$f":"SUM(#REF!)","v":{"$error":"#REF!"}},{"$f":"SUM(#REF!)","v":{"$error":"#REF!"}},{"$f":"SUM(#REF!)","v":{"$error":"#REF!"}},{"$f":"SUM(#REF!)","v":{"$error":"#REF!"}},{"$f":"SUM(#REF!)","v":{"$error":"#REF!"}},{"$f":"SUM(#REF!)","v":{"$error":"#REF!"}},{"$f":"SUM(#REF!)","v":{"$error":"#REF!"}},{"$f":"SUM(#REF!)","v":{"$error":"#REF!"}},{"$f":"SUM(#REF!)","v":{"$error":"#REF!"}},{"$f":"SUM(#REF!)","v":{"$error":"#REF!"}},{"$f":"SUM(#REF!)","v":{"$error":"#REF!"}},{"$f":"SUM(#REF!)","v":{"$error":"#REF!"}},{"$f":"SUM(#REF!)","v":{"$error":"#REF!"}},{"$f":"SUM(#REF!)","v":{"$error":"#REF!"}},{"$f":"SUM(#REF!)","v":{"$error":"#REF!"}},{"$f":"SUM(#REF!)","v":{"$error":"#REF!"}},{"$f":"SUM(#REF!)","v":{"$error":"#REF!"}},{"$f":"SUM(#REF!)","v":{"$error":"#REF!"}},{"$f":"SUM(#REF!)","v":{"$error":"#REF!"}},{"$f":"SUM(#REF!)","v":{"$error":"#REF!"}},{"$f":"SUM(#REF!)","v":{"$error":"#REF!"}},{"$f":"SUM(#REF!)","v":{"$error":"#REF!"}},{"$f":"SUM(#REF!)","v":{"$error":"#REF!"}},{"$f":"SUM(#REF!)","v":{"$error":"#REF!"}},{"$f":"SUM(#REF!)","v":{"$error":"#REF!"}},{"$f":"SUM(#REF!)","v":{"$error":"#REF!"}},{"$f":"SUM(#REF!)","v":{"$error":"#REF!"}},{"$f":"SUM(#REF!)","v":{"$error":"#REF!"}},{"$f":"SUM(#REF!)","v":{"$error":"#REF!"}},{"$f":"SUM(#REF!)","v":{"$error":"#REF!"}},{"$f":"SUM(#REF!)","v":{"$error":"#REF!"}},{"$f":"SUM(#REF!)","v":{"$error":"#REF!"}},{"$f":"SUM(#REF!)","v":{"$error":"#REF!"}},{"$f":"SUM(#REF!)","v":{"$error":"#REF!"}},{"$f":"SUM(#REF!)","v":{"$error":"#REF!"}},{"$f":"SUM(#REF!)","v":{"$error":"#REF!"}},{"$f":"SUM(#REF!)","v":{"$error":"#REF!"}},{"$f":"SUM(#REF!)","v":{"$error":"#REF!"}},{"$f":"SUM(#REF!)","v":{"$error":"#REF!"}},{"$f":"SUM(#REF!)","v":{"$error":"#REF!"}},{"$f":"SUM(#REF!)","v":{"$error":"#REF!"}},{"$f":"SUM(#REF!)","v":{"$error":"#REF!"}},{"$f":"SUM(#REF!)","v":{"$error":"#REF!"}},{"$f":"SUM(#REF!)","v":{"$error":"#REF!"}},{"$f":"SUM(#REF!)","v":{"$error":"#REF!"}},{"$f":"SUM(#REF!)","v":{"$error":"#REF!"}},{"$f":"SUM(#REF!)","v":{"$error":"#REF!"}},{"$f":"SUM(#REF!)","v":{"$error":"#REF!"}},{"$f":"SUM(#REF!)","v":{"$error":"#REF!"}},{"$f":"SUM(#REF!)","v":{"$error":"#REF!"}},{"$f":"SUM(#REF!)","v":{"$error":"#REF!"}},{"$f":"SUM(#REF!)","v":{"$error":"#REF!"}},{"$f":"SUM(#REF!)","v":{"$error":"#REF!"}},{"$f":"SUM(#REF!)","v":{"$error":"#REF!"}},{"$f":"SUM(#REF!)","v":{"$error":"#REF!"}},{"$f":"SUM(#REF!)","v":{"$error":"#REF!"}},{"$f":"SUM(#REF!)","v":{"$error":"#REF!"}},{"$f":"SUM(#REF!)","v":{"$error":"#REF!"}},{"$f":"SUM(#REF!)","v":{"$error":"#REF!"}},{"$f":"SUM(#REF!)","v":{"$error":"#REF!"}},{"$f":"SUM(#REF!)","v":{"$error":"#REF!"}},{"$f":"SUM(#REF!)","v":{"$error":"#REF!"}},{"$f":"SUM(#REF!)","v":{"$error":"#REF!"}},{"$f":"SUM(#REF!)","v":{"$error":"#REF!"}},{"$f":"SUM(#REF!)","v":{"$error":"#REF!"}},{"$f":"SUM(#REF!)","v":{"$error":"#REF!"}},{"$f":"SUM(#REF!)","v":{"$error":"#REF!"}},{"$f":"SUM(#REF!)","v":{"$error":"#REF!"}},{"$f":"SUM(#REF!)","v":{"$error":"#REF!"}},{"$f":"SUM(#REF!)","v":{"$error":"#REF!"}},{"$f":"SUM(#REF!)","v":{"$error":"#REF!"}},{"$f":"SUM(#REF!)","v":{"$error":"#REF!"}},{"$f":"SUM(#REF!)","v":{"$error":"#REF!"}},{"$f":"SUM(#REF!)","v":{"$error":"#REF!"}},{"$f":"SUM(#REF!)","v":{"$error":"#REF!"}},{"$f":"SUM(#REF!)","v":{"$error":"#REF!"}},{"$f":"SUM(#REF!)","v":{"$error":"#REF!"}},{"$f":"SUM(#REF!)","v":{"$error":"#REF!"}},{"$f":"SUM(#REF!)","v":{"$error":"#REF!"}},{"$f":"SUM(#REF!)","v":{"$error":"#REF!"}},{"$f":"SUM(#REF!)","v":{"$error":"#REF!"}},{"$f":"SUM(#REF!)","v":{"$error":"#REF!"}},{"$f":"SUM(#REF!)","v":{"$error":"#REF!"}},{"$f":"SUM(#REF!)","v":{"$error":"#REF!"}},{"$f":"SUM(#REF!)","v":{"$error":"#REF!"}},{"$f":"SUM(#REF!)","v":{"$error":"#REF!"}},{"$f":"SUM(#REF!)","v":{"$error":"#REF!"}},{"$f":"SUM(#REF!)","v":{"$error":"#REF!"}},{"$f":"SUM(#REF!)","v":{"$error":"#REF!"}},{"$f":"SUM(#REF!)","v":{"$error":"#REF!"}},{"$f":"SUM(#REF!)","v":{"$error":"#REF!"}},{"$f":"SUM(#REF!)","v":{"$error":"#REF!"}},{"$f":"SUM(#REF!)","v":{"$error":"#REF!"}},{"$f":"SUM(#REF!)","v":{"$error":"#REF!"}},{"$f":"SUM(#REF!)","v":{"$error":"#REF!"}},{"$f":"SUM(#REF!)","v":{"$error":"#REF!"}},{"$f":"SUM(#REF!)","v":{"$error":"#REF!"}},{"$f":"SUM(#REF!)","v":{"$error":"#REF!"}},{"$f":"SUM(#REF!)","v":{"$error":"#REF!"}},{"$f":"SUM(#REF!)","v":{"$error":"#REF!"}},{"$f":"SUM(#REF!)","v":{"$error":"#REF!"}},{"$f":"SUM(#REF!)","v":{"$error":"#REF!"}},{"$f":"SUM(#REF!)","v":{"$error":"#REF!"}},{"$f":"SUM(#REF!)","v":{"$error":"#REF!"}},{"$f":"SUM(#REF!)","v":{"$error":"#REF!"}},{"$f":"SUM(#REF!)","v":{"$error":"#REF!"}},{"$f":"SUM(#REF!)","v":{"$error":"#REF!"}},{"$f":"SUM(#REF!)","v":{"$error":"#REF!"}},{"$f":"SUM(#REF!)","v":{"$error":"#REF!"}},{"$f":"SUM(#REF!)","v":{"$error":"#REF!"}},{"$f":"SUM(#REF!)","v":{"$error":"#REF!"}},{"$f":"SUM(#REF!)","v":{"$error":"#REF!"}},{"$f":"SUM(#REF!)","v":{"$error":"#REF!"}},{"$f":"SUM(#REF!)","v":{"$error":"#REF!"}},{"$f":"SUM(#REF!)","v":{"$error":"#REF!"}},{"$f":"SUM(#REF!)","v":{"$error":"#REF!"}},{"$f":"SUM(#REF!)","v":{"$error":"#REF!"}},{"$f":"SUM(#REF!)","v":{"$error":"#REF!"}},{"$f":"SUM(#REF!)","v":{"$error":"#REF!"}},{"$f":"SUM(#REF!)","v":{"$error":"#REF!"}},{"$f":"SUM(#REF!)","v":{"$error":"#REF!"}},{"$f":"SUM(#REF!)","v":{"$error":"#REF!"}},{"$f":"SUM(#REF!)","v":{"$error":"#REF!"}},{"$f":"SUM(#REF!)","v":{"$error":"#REF!"}},{"$f":"SUM(#REF!)","v":{"$error":"#REF!"}},{"$f":"SUM(#REF!)","v":{"$error":"#REF!"}},{"$f":"SUM(#REF!)","v":{"$error":"#REF!"}},{"$f":"SUM(#REF!)","v":{"$error":"#REF!"}},{"$f":"SUM(#REF!)","v":{"$error":"#REF!"}},{"$f":"SUM(#REF!)","v":{"$error":"#REF!"}},{"$f":"SUM(#REF!)","v":{"$error":"#REF!"}},{"$f":"SUM(#REF!)","v":{"$error":"#REF!"}},{"$f":"SUM(#REF!)","v":{"$error":"#REF!"}},{"$f":"SUM(#REF!)","v":{"$error":"#REF!"}},{"$f":"SUM(#REF!)","v":{"$error":"#REF!"}},{"$f":"SUM(#REF!)","v":{"$error":"#REF!"}},{"$f":"SUM(#REF!)","v":{"$error":"#REF!"}},{"$f":"SUM(#REF!)","v":{"$error":"#REF!"}},{"$f":"SUM(#REF!)","v":{"$error":"#REF!"}},{"$f":"SUM(#REF!)","v":{"$error":"#REF!"}},{"$f":"SUM(#REF!)","v":{"$error":"#REF!"}},{"$f":"SUM(#REF!)","v":{"$error":"#REF!"}},{"$f":"SUM(#REF!)","v":{"$error":"#REF!"}},{"$f":"SUM(#REF!)","v":{"$error":"#REF!"}},{"$f":"SUM(#REF!)","v":{"$error":"#REF!"}},{"$f":"SUM(#REF!)","v":{"$error":"#REF!"}},{"$f":"SUM(#REF!)","v":{"$error":"#REF!"}},{"$f":"SUM(#REF!)","v":{"$error":"#REF!"}},{"$f":"SUM(#REF!)","v":{"$error":"#REF!"}},{"$f":"SUM(#REF!)","v":{"$error":"#REF!"}},{"$f":"SUM(#REF!)","v":{"$error":"#REF!"}},{"$f":"SUM(#REF!)","v":{"$error":"#REF!"}},{"$f":"SUM(#REF!)","v":{"$error":"#REF!"}},{"$f":"SUM(#REF!)","v":{"$error":"#REF!"}},{"$f":"SUM(#REF!)","v":{"$error":"#REF!"}},{"$f":"SUM(#REF!)","v":{"$error":"#REF!"}},{"$f":"SUM(#REF!)","v":{"$error":"#REF!"}},{"$f":"SUM(#REF!)","v":{"$error":"#REF!"}},{"$f":"SUM(#REF!)","v":{"$error":"#REF!"}},{"$f":"SUM(#REF!)","v":{"$error":"#REF!"}},{"$f":"SUM(#REF!)","v":{"$error":"#REF!"}},{"$f":"SUM(#REF!)","v":{"$error":"#REF!"}},{"$f":"SUM(#REF!)","v":{"$error":"#REF!"}},{"$f":"SUM(#REF!)","v":{"$error":"#REF!"}},{"$f":"SUM(#REF!)","v":{"$error":"#REF!"}},{"$f":"SUM(#REF!)","v":{"$error":"#REF!"}},{"$f":"SUM(#REF!)","v":{"$error":"#REF!"}},{"$f":"SUM(#REF!)","v":{"$error":"#REF!"}},{"$f":"SUM(#REF!)","v":{"$error":"#REF!"}},{"$f":"SUM(#REF!)","v":{"$error":"#REF!"}},{"$f":"SUM(#REF!)","v":{"$error":"#REF!"}},{"$f":"SUM(#REF!)","v":{"$error":"#REF!"}},{"$f":"SUM(#REF!)","v":{"$error":"#REF!"}},{"$f":"SUM(#REF!)","v":{"$error":"#REF!"}},{"$f":"SUM(#REF!)","v":{"$error":"#REF!"}},{"$f":"SUM(#REF!)","v":{"$error":"#REF!"}},{"$f":"SUM(#REF!)","v":{"$error":"#REF!"}},{"$f":"SUM(#REF!)","v":{"$error":"#REF!"}},{"$f":"SUM(#REF!)","v":{"$error":"#REF!"}},{"$f":"SUM(#REF!)","v":{"$error":"#REF!"}},{"$f":"SUM(#REF!)","v":{"$error":"#REF!"}},{"$f":"SUM(#REF!)","v":{"$error":"#REF!"}},{"$f":"SUM(#REF!)","v":{"$error":"#REF!"}},{"$f":"SUM(#REF!)","v":{"$error":"#REF!"}},{"$f":"SUM(#REF!)","v":{"$error":"#REF!"}},{"$f":"SUM(#REF!)","v":{"$error":"#REF!"}},{"$f":"SUM(#REF!)","v":{"$error":"#REF!"}},{"$f":"SUM(#REF!)","v":{"$error":"#REF!"}},{"$f":"SUM(#REF!)","v":{"$error":"#REF!"}},{"$f":"SUM(#REF!)","v":{"$error":"#REF!"}},{"$f":"SUM(#REF!)","v":{"$error":"#REF!"}},{"$f":"SUM(#REF!)","v":{"$error":"#REF!"}},{"$f":"SUM(#REF!)","v":{"$error":"#REF!"}},{"$f":"SUM(#REF!)","v":{"$error":"#REF!"}},{"$f":"SUM(#REF!)","v":{"$error":"#REF!"}},{"$f":"SUM(#REF!)","v":{"$error":"#REF!"}},{"$f":"SUM(#REF!)","v":{"$error":"#REF!"}},{"$f":"SUM(#REF!)","v":{"$error":"#REF!"}},{"$f":"SUM(#REF!)","v":{"$error":"#REF!"}},{"$f":"SUM(#REF!)","v":{"$error":"#REF!"}},{"$f":"SUM(#REF!)","v":{"$error":"#REF!"}},{"$f":"SUM(#REF!)","v":{"$error":"#REF!"}},{"$f":"SUM(#REF!)","v":{"$error":"#REF!"}},{"$f":"SUM(#REF!)","v":{"$error":"#REF!"}},{"$f":"SUM(#REF!)","v":{"$error":"#REF!"}},{"$f":"SUM(#REF!)","v":{"$error":"#REF!"}},{"$f":"SUM(#REF!)","v":{"$error":"#REF!"}},{"$f":"SUM(#REF!)","v":{"$error":"#REF!"}},{"$f":"SUM(#REF!)","v":{"$error":"#REF!"}},{"$f":"SUM(#REF!)","v":{"$error":"#REF!"}},{"$f":"SUM(#REF!)","v":{"$error":"#REF!"}},{"$f":"SUM(#REF!)","v":{"$error":"#REF!"}},{"$f":"SUM(#REF!)","v":{"$error":"#REF!"}},{"$f":"SUM(#REF!)","v":{"$error":"#REF!"}},{"$f":"SUM(#REF!)","v":{"$error":"#REF!"}},{"$f":"SUM(#REF!)","v":{"$error":"#REF!"}},{"$f":"SUM(#REF!)","v":{"$error":"#REF!"}},{"$f":"SUM(#REF!)","v":{"$error":"#REF!"}},{"$f":"SUM(#REF!)","v":{"$error":"#REF!"}},{"$f":"SUM(#REF!)","v":{"$error":"#REF!"}},{"$f":"SUM(#REF!)","v":{"$error":"#REF!"}},{"$f":"SUM(#REF!)","v":{"$error":"#REF!"}},{"$f":"SUM(#REF!)","v":{"$error":"#REF!"}},{"$f":"SUM(#REF!)","v":{"$error":"#REF!"}},{"$f":"SUM(#REF!)","v":{"$error":"#REF!"}},{"$f":"SUM(#REF!)","v":{"$error":"#REF!"}},{"$f":"SUM(#REF!)","v":{"$error":"#REF!"}},{"$f":"SUM(#REF!)","v":{"$error":"#REF!"}},{"$f":"SUM(#REF!)","v":{"$error":"#REF!"}},{"$f":"SUM(#REF!)","v":{"$error":"#REF!"}},{"$f":"SUM(#REF!)","v":{"$error":"#REF!"}},{"$f":"SUM(#REF!)","v":{"$error":"#REF!"}},{"$f":"SUM(#REF!)","v":{"$error":"#REF!"}},{"$f":"SUM(#REF!)","v":{"$error":"#REF!"}},{"$f":"SUM(#REF!)","v":{"$error":"#REF!"}},{"$f":"SUM(#REF!)","v":{"$error":"#REF!"}},{"$f":"SUM(#REF!)","v":{"$error":"#REF!"}},{"$f":"SUM(#REF!)","v":{"$error":"#REF!"}},{"$f":"SUM(#REF!)","v":{"$error":"#REF!"}},{"$f":"SUM(#REF!)","v":{"$error":"#REF!"}},{"$f":"SUM(#REF!)","v":{"$error":"#REF!"}},{"$f":"SUM(#REF!)","v":{"$error":"#REF!"}},{"$f":"SUM(#REF!)","v":{"$error":"#REF!"}},{"$f":"SUM(#REF!)","v":{"$error":"#REF!"}},{"$f":"SUM(#REF!)","v":{"$error":"#REF!"}},{"$f":"SUM(#REF!)","v":{"$error":"#REF!"}},{"$f":"SUM(#REF!)","v":{"$error":"#REF!"}},{"$f":"SUM(#REF!)","v":{"$error":"#REF!"}},{"$f":"SUM(#REF!)","v":{"$error":"#REF!"}},{"$f":"SUM(#REF!)","v":{"$error":"#REF!"}},{"$f":"SUM(#REF!)","v":{"$error":"#REF!"}},{"$f":"SUM(#REF!)","v":{"$error":"#REF!"}},{"$f":"SUM(#REF!)","v":{"$error":"#REF!"}},{"$f":"SUM(#REF!)","v":{"$error":"#REF!"}},{"$f":"SUM(#REF!)","v":{"$error":"#REF!"}},{"$f":"SUM(#REF!)","v":{"$error":"#REF!"}},{"$f":"SUM(#REF!)","v":{"$error":"#REF!"}},{"$f":"SUM(#REF!)","v":{"$error":"#REF!"}},{"$f":"SUM(#REF!)","v":{"$error":"#REF!"}},{"$f":"SUM(#REF!)","v":{"$error":"#REF!"}},{"$f":"SUM(#REF!)","v":{"$error":"#REF!"}},{"$f":"SUM(#REF!)","v":{"$error":"#REF!"}},{"$f":"SUM(#REF!)","v":{"$error":"#REF!"}},{"$f":"SUM(#REF!)","v":{"$error":"#REF!"}},{"$f":"SUM(#REF!)","v":{"$error":"#REF!"}},{"$f":"SUM(#REF!)","v":{"$error":"#REF!"}},{"$f":"SUM(#REF!)","v":{"$error":"#REF!"}},{"$f":"SUM(#REF!)","v":{"$error":"#REF!"}},{"$f":"SUM(#REF!)","v":{"$error":"#REF!"}},{"$f":"SUM(#REF!)","v":{"$error":"#REF!"}},{"$f":"SUM(#REF!)","v":{"$error":"#REF!"}},{"$f":"SUM(#REF!)","v":{"$error":"#REF!"}},{"$f":"SUM(#REF!)","v":{"$error":"#REF!"}},{"$f":"SUM(#REF!)","v":{"$error":"#REF!"}},{"$f":"SUM(#REF!)","v":{"$error":"#REF!"}},{"$f":"SUM(#REF!)","v":{"$error":"#REF!"}},{"$f":"SUM(#REF!)","v":{"$error":"#REF!"}},{"$f":"SUM(#REF!)","v":{"$error":"#REF!"}},{"$f":"SUM(#REF!)","v":{"$error":"#REF!"}},{"$f":"SUM(#REF!)","v":{"$error":"#REF!"}},{"$f":"SUM(#REF!)","v":{"$error":"#REF!"}},{"$f":"SUM(#REF!)","v":{"$error":"#REF!"}},{"$f":"SUM(#REF!)","v":{"$error":"#REF!"}},{"$f":"SUM(#REF!)","v":{"$error":"#REF!"}},{"$f":"SUM(#REF!)","v":{"$error":"#REF!"}},{"$f":"SUM(#REF!)","v":{"$error":"#REF!"}},{"$f":"SUM(#REF!)","v":{"$error":"#REF!"}},{"$f":"SUM(#REF!)","v":{"$error":"#REF!"}},{"$f":"SUM(#REF!)","v":{"$error":"#REF!"}},{"$f":"SUM(#REF!)","v":{"$error":"#REF!"}},{"$f":"SUM(#REF!)","v":{"$error":"#REF!"}},{"$f":"SUM(#REF!)","v":{"$error":"#REF!"}},{"$f":"SUM(#REF!)","v":{"$error":"#REF!"}},{"$f":"SUM(#REF!)","v":{"$error":"#REF!"}},{"$f":"SUM(#REF!)","v":{"$error":"#REF!"}},{"$f":"SUM(#REF!)","v":{"$error":"#REF!"}},{"$f":"SUM(#REF!)","v":{"$error":"#REF!"}},{"$f":"SUM(#REF!)","v":{"$error":"#REF!"}},{"$f":"SUM(#REF!)","v":{"$error":"#REF!"}},{"$f":"SUM(#REF!)","v":{"$error":"#REF!"}},{"$f":"SUM(#REF!)","v":{"$error":"#REF!"}},{"$f":"SUM(#REF!)","v":{"$error":"#REF!"}},{"$f":"SUM(#REF!)","v":{"$error":"#REF!"}},{"$f":"SUM(#REF!)","v":{"$error":"#REF!"}},{"$f":"SUM(#REF!)","v":{"$error":"#REF!"}},{"$f":"SUM(#REF!)","v":{"$error":"#REF!"}},{"$f":"SUM(#REF!)","v":{"$error":"#REF!"}},{"$f":"SUM(#REF!)","v":{"$error":"#REF!"}},{"$f":"SUM(#REF!)","v":{"$error":"#REF!"}},{"$f":"SUM(#REF!)","v":{"$error":"#REF!"}},{"$f":"SUM(#REF!)","v":{"$error":"#REF!"}},{"$f":"SUM(#REF!)","v":{"$error":"#REF!"}},{"$f":"SUM(#REF!)","v":{"$error":"#REF!"}},{"$f":"SUM(#REF!)","v":{"$error":"#REF!"}},{"$f":"SUM(#REF!)","v":{"$error":"#REF!"}},{"$f":"SUM(#REF!)","v":{"$error":"#REF!"}},{"$f":"SUM(#REF!)","v":{"$error":"#REF!"}},{"$f":"SUM(#REF!)","v":{"$error":"#REF!"}},{"$f":"SUM(#REF!)","v":{"$error":"#REF!"}},{"$f":"SUM(#REF!)","v":{"$error":"#REF!"}},{"$f":"SUM(#REF!)","v":{"$error":"#REF!"}},{"$f":"SUM(#REF!)","v":{"$error":"#REF!"}},{"$f":"SUM(#REF!)","v":{"$error":"#REF!"}},{"$f":"SUM(#REF!)","v":{"$error":"#REF!"}},{"$f":"SUM(#REF!)","v":{"$error":"#REF!"}},{"$f":"SUM(#REF!)","v":{"$error":"#REF!"}},{"$f":"SUM(#REF!)","v":{"$error":"#REF!"}},{"$f":"SUM(#REF!)","v":{"$error":"#REF!"}},{"$f":"SUM(#REF!)","v":{"$error":"#REF!"}},{"$f":"SUM(#REF!)","v":{"$error":"#REF!"}},{"$f":"SUM(#REF!)","v":{"$error":"#REF!"}},{"$f":"SUM(#REF!)","v":{"$error":"#REF!"}},{"$f":"SUM(#REF!)","v":{"$error":"#REF!"}},{"$f":"SUM(#REF!)","v":{"$error":"#REF!"}},{"$f":"SUM(#REF!)","v":{"$error":"#REF!"}},{"$f":"SUM(#REF!)","v":{"$error":"#REF!"}},{"$f":"SUM(#REF!)","v":{"$error":"#REF!"}},{"$f":"SUM(#REF!)","v":{"$error":"#REF!"}},{"$f":"SUM(#REF!)","v":{"$error":"#REF!"}},{"$f":"SUM(#REF!)","v":{"$error":"#REF!"}},{"$f":"SUM(#REF!)","v":{"$error":"#REF!"}},{"$f":"SUM(#REF!)","v":{"$error":"#REF!"}},{"$f":"SUM(#REF!)","v":{"$error":"#REF!"}},{"$f":"SUM(#REF!)","v":{"$error":"#REF!"}},{"$f":"SUM(#REF!)","v":{"$error":"#REF!"}},{"$f":"SUM(#REF!)","v":{"$error":"#REF!"}},{"$f":"SUM(#REF!)","v":{"$error":"#REF!"}},{"$f":"SUM(#REF!)","v":{"$error":"#REF!"}},{"$f":"SUM(#REF!)","v":{"$error":"#REF!"}},{"$f":"SUM(#REF!)","v":{"$error":"#REF!"}},{"$f":"SUM(#REF!)","v":{"$error":"#REF!"}},{"$f":"SUM(#REF!)","v":{"$error":"#REF!"}},{"$f":"SUM(#REF!)","v":{"$error":"#REF!"}},{"$f":"SUM(#REF!)","v":{"$error":"#REF!"}},{"$f":"SUM(#REF!)","v":{"$error":"#REF!"}},{"$f":"SUM(#REF!)","v":{"$error":"#REF!"}},{"$f":"SUM(#REF!)","v":{"$error":"#REF!"}},{"$f":"SUM(#REF!)","v":{"$error":"#REF!"}},{"$f":"SUM(#REF!)","v":{"$error":"#REF!"}},{"$f":"SUM(#REF!)","v":{"$error":"#REF!"}},{"$f":"SUM(#REF!)","v":{"$error":"#REF!"}},{"$f":"SUM(#REF!)","v":{"$error":"#REF!"}},{"$f":"SUM(#REF!)","v":{"$error":"#REF!"}},{"$f":"SUM(#REF!)","v":{"$error":"#REF!"}},{"$f":"SUM(#REF!)","v":{"$error":"#REF!"}},{"$f":"SUM(#REF!)","v":{"$error":"#REF!"}},{"$f":"SUM(#REF!)","v":{"$error":"#REF!"}},{"$f":"SUM(#REF!)","v":{"$error":"#REF!"}},{"$f":"SUM(#REF!)","v":{"$error":"#REF!"}},{"$f":"SUM(#REF!)","v":{"$error":"#REF!"}},{"$f":"SUM(#REF!)","v":{"$error":"#REF!"}},{"$f":"SUM(#REF!)","v":{"$error":"#REF!"}},{"$f":"SUM(#REF!)","v":{"$error":"#REF!"}},{"$f":"SUM(#REF!)","v":{"$error":"#REF!"}},{"$f":"SUM(#REF!)","v":{"$error":"#REF!"}},{"$f":"SUM(#REF!)","v":{"$error":"#REF!"}},{"$f":"SUM(#REF!)","v":{"$error":"#REF!"}},{"$f":"SUM(#REF!)","v":{"$error":"#REF!"}},{"$f":"SUM(#REF!)","v":{"$error":"#REF!"}},{"$f":"SUM(#REF!)","v":{"$error":"#REF!"}},{"$f":"SUM(#REF!)","v":{"$error":"#REF!"}},{"$f":"SUM(#REF!)","v":{"$error":"#REF!"}},{"$f":"SUM(#REF!)","v":{"$error":"#REF!"}},{"$f":"SUM(#REF!)","v":{"$error":"#REF!"}},{"$f":"SUM(#REF!)","v":{"$error":"#REF!"}},{"$f":"SUM(#REF!)","v":{"$error":"#REF!"}},{"$f":"SUM(#REF!)","v":{"$error":"#REF!"}},{"$f":"SUM(#REF!)","v":{"$error":"#REF!"}},{"$f":"SUM(#REF!)","v":{"$error":"#REF!"}},{"$f":"SUM(#REF!)","v":{"$error":"#REF!"}},{"$f":"SUM(#REF!)","v":{"$error":"#REF!"}},{"$f":"SUM(#REF!)","v":{"$error":"#REF!"}},{"$f":"SUM(#REF!)","v":{"$error":"#REF!"}},{"$f":"SUM(#REF!)","v":{"$error":"#REF!"}},{"$f":"SUM(#REF!)","v":{"$error":"#REF!"}},{"$f":"SUM(#REF!)","v":{"$error":"#REF!"}},{"$f":"SUM(#REF!)","v":{"$error":"#REF!"}},{"$f":"SUM(#REF!)","v":{"$error":"#REF!"}},{"$f":"SUM(#REF!)","v":{"$error":"#REF!"}},{"$f":"SUM(#REF!)","v":{"$error":"#REF!"}},{"$f":"SUM(#REF!)","v":{"$error":"#REF!"}},{"$f":"SUM(#REF!)","v":{"$error":"#REF!"}},{"$f":"SUM(#REF!)","v":{"$error":"#REF!"}},{"$f":"SUM(#REF!)","v":{"$error":"#REF!"}},{"$f":"SUM(#REF!)","v":{"$error":"#REF!"}},{"$f":"SUM(#REF!)","v":{"$error":"#REF!"}},{"$f":"SUM(#REF!)","v":{"$error":"#REF!"}},{"$f":"SUM(#REF!)","v":{"$error":"#REF!"}},{"$f":"SUM(#REF!)","v":{"$error":"#REF!"}},{"$f":"SUM(#REF!)","v":{"$error":"#REF!"}},{"$f":"SUM(#REF!)","v":{"$error":"#REF!"}},{"$f":"SUM(#REF!)","v":{"$error":"#REF!"}},{"$f":"SUM(#REF!)","v":{"$error":"#REF!"}},{"$f":"SUM(#REF!)","v":{"$error":"#REF!"}},{"$f":"SUM(#REF!)","v":{"$error":"#REF!"}},{"$f":"SUM(#REF!)","v":{"$error":"#REF!"}},{"$f":"SUM(#REF!)","v":{"$error":"#REF!"}},{"$f":"SUM(#REF!)","v":{"$error":"#REF!"}},{"$f":"SUM(#REF!)","v":{"$error":"#REF!"}},{"$f":"SUM(#REF!)","v":{"$error":"#REF!"}},{"$f":"SUM(#REF!)","v":{"$error":"#REF!"}},{"$f":"SUM(#REF!)","v":{"$error":"#REF!"}},{"$f":"SUM(#REF!)","v":{"$error":"#REF!"}},{"$f":"SUM(#REF!)","v":{"$error":"#REF!"}},{"$f":"SUM(#REF!)","v":{"$error":"#REF!"}},{"$f":"SUM(#REF!)","v":{"$error":"#REF!"}},{"$f":"SUM(#REF!)","v":{"$error":"#REF!"}},{"$f":"SUM(#REF!)","v":{"$error":"#REF!"}},{"$f":"SUM(#REF!)","v":{"$error":"#REF!"}},{"$f":"SUM(#REF!)","v":{"$error":"#REF!"}},{"$f":"SUM(#REF!)","v":{"$error":"#REF!"}},{"$f":"SUM(#REF!)","v":{"$error":"#REF!"}},{"$f":"SUM(#REF!)","v":{"$error":"#REF!"}},{"$f":"SUM(#REF!)","v":{"$error":"#REF!"}},{"$f":"SUM(#REF!)","v":{"$error":"#REF!"}},{"$f":"SUM(#REF!)","v":{"$error":"#REF!"}},{"$f":"SUM(#REF!)","v":{"$error":"#REF!"}},{"$f":"SUM(#REF!)","v":{"$error":"#REF!"}},{"$f":"SUM(#REF!)","v":{"$error":"#REF!"}},{"$f":"SUM(#REF!)","v":{"$error":"#REF!"}},{"$f":"SUM(#REF!)","v":{"$error":"#REF!"}},{"$f":"SUM(#REF!)","v":{"$error":"#REF!"}},{"$f":"SUM(#REF!)","v":{"$error":"#REF!"}},{"$f":"SUM(#REF!)","v":{"$error":"#REF!"}},{"$f":"SUM(#REF!)","v":{"$error":"#REF!"}},{"$f":"SUM(#REF!)","v":{"$error":"#REF!"}},{"$f":"SUM(#REF!)","v":{"$error":"#REF!"}},{"$f":"SUM(#REF!)","v":{"$error":"#REF!"}},{"$f":"SUM(#REF!)","v":{"$error":"#REF!"}},{"$f":"SUM(#REF!)","v":{"$error":"#REF!"}},{"$f":"SUM(#REF!)","v":{"$error":"#REF!"}},{"$f":"SUM(#REF!)","v":{"$error":"#REF!"}},{"$f":"SUM(#REF!)","v":{"$error":"#REF!"}},{"$f":"SUM(#REF!)","v":{"$error":"#REF!"}},{"$f":"SUM(#REF!)","v":{"$error":"#REF!"}},{"$f":"SUM(#REF!)","v":{"$error":"#REF!"}},{"$f":"SUM(#REF!)","v":{"$error":"#REF!"}},{"$f":"SUM(#REF!)","v":{"$error":"#REF!"}},{"$f":"SUM(#REF!)","v":{"$error":"#REF!"}},{"$f":"SUM(#REF!)","v":{"$error":"#REF!"}},{"$f":"SUM(#REF!)","v":{"$error":"#REF!"}},{"$f":"SUM(#REF!)","v":{"$error":"#REF!"}},{"$f":"SUM(#REF!)","v":{"$error":"#REF!"}},{"$f":"SUM(#REF!)","v":{"$error":"#REF!"}},{"$f":"SUM(#REF!)","v":{"$error":"#REF!"}},{"$f":"SUM(#REF!)","v":{"$error":"#REF!"}},{"$f":"SUM(#REF!)","v":{"$error":"#REF!"}},{"$f":"SUM(#REF!)","v":{"$error":"#REF!"}},{"$f":"SUM(#REF!)","v":{"$error":"#REF!"}},{"$f":"SUM(#REF!)","v":{"$error":"#REF!"}},{"$f":"SUM(#REF!)","v":{"$error":"#REF!"}},{"$f":"SUM(#REF!)","v":{"$error":"#REF!"}},{"$f":"SUM(#REF!)","v":{"$error":"#REF!"}},{"$f":"SUM(#REF!)","v":{"$error":"#REF!"}},{"$f":"SUM(#REF!)","v":{"$error":"#REF!"}},{"$f":"SUM(#REF!)","v":{"$error":"#REF!"}},{"$f":"SUM(#REF!)","v":{"$error":"#REF!"}},{"$f":"SUM(#REF!)","v":{"$error":"#REF!"}},{"$f":"SUM(#REF!)","v":{"$error":"#REF!"}},{"$f":"SUM(#REF!)","v":{"$error":"#REF!"}},{"$f":"SUM(#REF!)","v":{"$error":"#REF!"}},{"$f":"SUM(#REF!)","v":{"$error":"#REF!"}},{"$f":"SUM(#REF!)","v":{"$error":"#REF!"}},{"$f":"SUM(#REF!)","v":{"$error":"#REF!"}},{"$f":"SUM(#REF!)","v":{"$error":"#REF!"}},{"$f":"SUM(#REF!)","v":{"$error":"#REF!"}},{"$f":"SUM(#REF!)","v":{"$error":"#REF!"}},{"$f":"SUM(#REF!)","v":{"$error":"#REF!"}},{"$f":"SUM(#REF!)","v":{"$error":"#REF!"}},{"$f":"SUM(#REF!)","v":{"$error":"#REF!"}},{"$f":"SUM(#REF!)","v":{"$error":"#REF!"}},{"$f":"SUM(#REF!)","v":{"$error":"#REF!"}},{"$f":"SUM(#REF!)","v":{"$error":"#REF!"}},{"$f":"SUM(#REF!)","v":{"$error":"#REF!"}},{"$f":"SUM(#REF!)","v":{"$error":"#REF!"}},{"$f":"SUM(#REF!)","v":{"$error":"#REF!"}},{"$f":"SUM(#REF!)","v":{"$error":"#REF!"}},{"$f":"SUM(#REF!)","v":{"$error":"#REF!"}},{"$f":"SUM(#REF!)","v":{"$error":"#REF!"}},{"$f":"SUM(#REF!)","v":{"$error":"#REF!"}},{"$f":"SUM(#REF!)","v":{"$error":"#REF!"}},{"$f":"SUM(#REF!)","v":{"$error":"#REF!"}},{"$f":"SUM(#REF!)","v":{"$error":"#REF!"}},{"$f":"SUM(#REF!)","v":{"$error":"#REF!"}},{"$f":"SUM(#REF!)","v":{"$error":"#REF!"}},{"$f":"SUM(#REF!)","v":{"$error":"#REF!"}},{"$f":"SUM(#REF!)","v":{"$error":"#REF!"}},{"$f":"SUM(#REF!)","v":{"$error":"#REF!"}},{"$f":"SUM(#REF!)","v":{"$error":"#REF!"}},{"$f":"SUM(#REF!)","v":{"$error":"#REF!"}},{"$f":"SUM(#REF!)","v":{"$error":"#REF!"}},{"$f":"SUM(#REF!)","v":{"$error":"#REF!"}},{"$f":"SUM(#REF!)","v":{"$error":"#REF!"}},{"$f":"SUM(#REF!)","v":{"$error":"#REF!"}},{"$f":"SUM(#REF!)","v":{"$error":"#REF!"}},{"$f":"SUM(#REF!)","v":{"$error":"#REF!"}},{"$f":"SUM(#REF!)","v":{"$error":"#REF!"}},{"$f":"SUM(#REF!)","v":{"$error":"#REF!"}},{"$f":"SUM(#REF!)","v":{"$error":"#REF!"}},{"$f":"SUM(#REF!)","v":{"$error":"#REF!"}},{"$f":"SUM(#REF!)","v":{"$error":"#REF!"}},{"$f":"SUM(#REF!)","v":{"$error":"#REF!"}},{"$f":"SUM(#REF!)","v":{"$error":"#REF!"}},{"$f":"SUM(#REF!)","v":{"$error":"#REF!"}},{"$f":"SUM(#REF!)","v":{"$error":"#REF!"}},{"$f":"SUM(#REF!)","v":{"$error":"#REF!"}},{"$f":"SUM(#REF!)","v":{"$error":"#REF!"}},{"$f":"SUM(#REF!)","v":{"$error":"#REF!"}},{"$f":"SUM(#REF!)","v":{"$error":"#REF!"}},{"$f":"SUM(#REF!)","v":{"$error":"#REF!"}},{"$f":"SUM(#REF!)","v":{"$error":"#REF!"}},{"$f":"SUM(#REF!)","v":{"$error":"#REF!"}},{"$f":"SUM(#REF!)","v":{"$error":"#REF!"}},{"$f":"SUM(#REF!)","v":{"$error":"#REF!"}},{"$f":"SUM(#REF!)","v":{"$error":"#REF!"}},{"$f":"SUM(#REF!)","v":{"$error":"#REF!"}},{"$f":"SUM(#REF!)","v":{"$error":"#REF!"}},{"$f":"SUM(#REF!)","v":{"$error":"#REF!"}},{"$f":"SUM(#REF!)","v":{"$error":"#REF!"}},{"$f":"SUM(#REF!)","v":{"$error":"#REF!"}},{"$f":"SUM(#REF!)","v":{"$error":"#REF!"}},{"$f":"SUM(#REF!)","v":{"$error":"#REF!"}},{"$f":"SUM(#REF!)","v":{"$error":"#REF!"}},{"$f":"SUM(#REF!)","v":{"$error":"#REF!"}},{"$f":"SUM(#REF!)","v":{"$error":"#REF!"}},{"$f":"SUM(#REF!)","v":{"$error":"#REF!"}},{"$f":"SUM(#REF!)","v":{"$error":"#REF!"}},{"$f":"SUM(#REF!)","v":{"$error":"#REF!"}},{"$f":"SUM(#REF!)","v":{"$error":"#REF!"}},{"$f":"SUM(#REF!)","v":{"$error":"#REF!"}},{"$f":"SUM(#REF!)","v":{"$error":"#REF!"}},{"$f":"SUM(#REF!)","v":{"$error":"#REF!"}},{"$f":"SUM(#REF!)","v":{"$error":"#REF!"}},{"$f":"SUM(#REF!)","v":{"$error":"#REF!"}},{"$f":"SUM(#REF!)","v":{"$error":"#REF!"}},{"$f":"SUM(#REF!)","v":{"$error":"#REF!"}},{"$f":"SUM(#REF!)","v":{"$error":"#REF!"}},{"$f":"SUM(#REF!)","v":{"$error":"#REF!"}},{"$f":"SUM(#REF!)","v":{"$error":"#REF!"}},{"$f":"SUM(#REF!)","v":{"$error":"#REF!"}},{"$f":"SUM(#REF!)","v":{"$error":"#REF!"}},{"$f":"SUM(#REF!)","v":{"$error":"#REF!"}},{"$f":"SUM(#REF!)","v":{"$error":"#REF!"}},{"$f":"SUM(#REF!)","v":{"$error":"#REF!"}},{"$f":"SUM(#REF!)","v":{"$error":"#REF!"}},{"$f":"SUM(#REF!)","v":{"$error":"#REF!"}},{"$f":"SUM(#REF!)","v":{"$error":"#REF!"}},{"$f":"SUM(#REF!)","v":{"$error":"#REF!"}},{"$f":"SUM(#REF!)","v":{"$error":"#REF!"}},{"$f":"SUM(#REF!)","v":{"$error":"#REF!"}},{"$f":"SUM(#REF!)","v":{"$error":"#REF!"}},{"$f":"SUM(#REF!)","v":{"$error":"#REF!"}},{"$f":"SUM(#REF!)","v":{"$error":"#REF!"}},{"$f":"SUM(#REF!)","v":{"$error":"#REF!"}},{"$f":"SUM(#REF!)","v":{"$error":"#REF!"}},{"$f":"SUM(#REF!)","v":{"$error":"#REF!"}},{"$f":"SUM(#REF!)","v":{"$error":"#REF!"}},{"$f":"SUM(#REF!)","v":{"$error":"#REF!"}},{"$f":"SUM(#REF!)","v":{"$error":"#REF!"}},{"$f":"SUM(#REF!)","v":{"$error":"#REF!"}},{"$f":"SUM(#REF!)","v":{"$error":"#REF!"}},{"$f":"SUM(#REF!)","v":{"$error":"#REF!"}},{"$f":"SUM(#REF!)","v":{"$error":"#REF!"}},{"$f":"SUM(#REF!)","v":{"$error":"#REF!"}},{"$f":"SUM(#REF!)","v":{"$error":"#REF!"}},{"$f":"SUM(#REF!)","v":{"$error":"#REF!"}},{"$f":"SUM(#REF!)","v":{"$error":"#REF!"}},{"$f":"SUM(#REF!)","v":{"$error":"#REF!"}},{"$f":"SUM(#REF!)","v":{"$error":"#REF!"}},{"$f":"SUM(#REF!)","v":{"$error":"#REF!"}},{"$f":"SUM(#REF!)","v":{"$error":"#REF!"}},{"$f":"SUM(#REF!)","v":{"$error":"#REF!"}},{"$f":"SUM(#REF!)","v":{"$error":"#REF!"}},{"$f":"SUM(#REF!)","v":{"$error":"#REF!"}},{"$f":"SUM(#REF!)","v":{"$error":"#REF!"}},{"$f":"SUM(#REF!)","v":{"$error":"#REF!"}},{"$f":"SUM(#REF!)","v":{"$error":"#REF!"}},{"$f":"SUM(#REF!)","v":{"$error":"#REF!"}},{"$f":"SUM(#REF!)","v":{"$error":"#REF!"}},{"$f":"SUM(#REF!)","v":{"$error":"#REF!"}},{"$f":"SUM(#REF!)","v":{"$error":"#REF!"}},{"$f":"SUM(#REF!)","v":{"$error":"#REF!"}},{"$f":"SUM(#REF!)","v":{"$error":"#REF!"}},{"$f":"SUM(#REF!)","v":{"$error":"#REF!"}},{"$f":"SUM(#REF!)","v":{"$error":"#REF!"}},{"$f":"SUM(#REF!)","v":{"$error":"#REF!"}},{"$f":"SUM(#REF!)","v":{"$error":"#REF!"}},{"$f":"SUM(#REF!)","v":{"$error":"#REF!"}},{"$f":"SUM(#REF!)","v":{"$error":"#REF!"}},{"$f":"SUM(#REF!)","v":{"$error":"#REF!"}},{"$f":"SUM(#REF!)","v":{"$error":"#REF!"}},{"$f":"SUM(#REF!)","v":{"$error":"#REF!"}},{"$f":"SUM(#REF!)","v":{"$error":"#REF!"}},{"$f":"SUM(#REF!)","v":{"$error":"#REF!"}},{"$f":"SUM(#REF!)","v":{"$error":"#REF!"}},{"$f":"SUM(#REF!)","v":{"$error":"#REF!"}},{"$f":"SUM(#REF!)","v":{"$error":"#REF!"}},{"$f":"SUM(#REF!)","v":{"$error":"#REF!"}},{"$f":"SUM(#REF!)","v":{"$error":"#REF!"}},{"$f":"SUM(#REF!)","v":{"$error":"#REF!"}},{"$f":"SUM(#REF!)","v":{"$error":"#REF!"}},{"$f":"SUM(#REF!)","v":{"$error":"#REF!"}},{"$f":"SUM(#REF!)","v":{"$error":"#REF!"}},{"$f":"SUM(#REF!)","v":{"$error":"#REF!"}},{"$f":"SUM(#REF!)","v":{"$error":"#REF!"}},{"$f":"SUM(#REF!)","v":{"$error":"#REF!"}},{"$f":"SUM(#REF!)","v":{"$error":"#REF!"}},{"$f":"SUM(#REF!)","v":{"$error":"#REF!"}},{"$f":"SUM(#REF!)","v":{"$error":"#REF!"}},{"$f":"SUM(#REF!)","v":{"$error":"#REF!"}},{"$f":"SUM(#REF!)","v":{"$error":"#REF!"}},{"$f":"SUM(#REF!)","v":{"$error":"#REF!"}},{"$f":"SUM(#REF!)","v":{"$error":"#REF!"}},{"$f":"SUM(#REF!)","v":{"$error":"#REF!"}},{"$f":"SUM(#REF!)","v":{"$error":"#REF!"}},{"$f":"SUM(#REF!)","v":{"$error":"#REF!"}},{"$f":"SUM(#REF!)","v":{"$error":"#REF!"}},{"$f":"SUM(#REF!)","v":{"$error":"#REF!"}},{"$f":"SUM(#REF!)","v":{"$error":"#REF!"}},{"$f":"SUM(#REF!)","v":{"$error":"#REF!"}},{"$f":"SUM(#REF!)","v":{"$error":"#REF!"}},{"$f":"SUM(#REF!)","v":{"$error":"#REF!"}},{"$f":"SUM(#REF!)","v":{"$error":"#REF!"}},{"$f":"SUM(#REF!)","v":{"$error":"#REF!"}},{"$f":"SUM(#REF!)","v":{"$error":"#REF!"}},{"$f":"SUM(#REF!)","v":{"$error":"#REF!"}},{"$f":"SUM(#REF!)","v":{"$error":"#REF!"}},{"$f":"SUM(#REF!)","v":{"$error":"#REF!"}},{"$f":"SUM(#REF!)","v":{"$error":"#REF!"}},{"$f":"SUM(#REF!)","v":{"$error":"#REF!"}},{"$f":"SUM(#REF!)","v":{"$error":"#REF!"}},{"$f":"SUM(#REF!)","v":{"$error":"#REF!"}},{"$f":"SUM(#REF!)","v":{"$error":"#REF!"}},{"$f":"SUM(#REF!)","v":{"$error":"#REF!"}},{"$f":"SUM(#REF!)","v":{"$error":"#REF!"}},{"$f":"SUM(#REF!)","v":{"$error":"#REF!"}},{"$f":"SUM(#REF!)","v":{"$error":"#REF!"}},{"$f":"SUM(#REF!)","v":{"$error":"#REF!"}},{"$f":"SUM(#REF!)","v":{"$error":"#REF!"}},{"$f":"SUM(#REF!)","v":{"$error":"#REF!"}},{"$f":"SUM(#REF!)","v":{"$error":"#REF!"}},{"$f":"SUM(#REF!)","v":{"$error":"#REF!"}},{"$f":"SUM(#REF!)","v":{"$error":"#REF!"}},{"$f":"SUM(#REF!)","v":{"$error":"#REF!"}},{"$f":"SUM(#REF!)","v":{"$error":"#REF!"}},{"$f":"SUM(#REF!)","v":{"$error":"#REF!"}},{"$f":"SUM(#REF!)","v":{"$error":"#REF!"}},{"$f":"SUM(#REF!)","v":{"$error":"#REF!"}},{"$f":"SUM(#REF!)","v":{"$error":"#REF!"}},{"$f":"SUM(#REF!)","v":{"$error":"#REF!"}},{"$f":"SUM(#REF!)","v":{"$error":"#REF!"}},{"$f":"SUM(#REF!)","v":{"$error":"#REF!"}},{"$f":"SUM(#REF!)","v":{"$error":"#REF!"}},{"$f":"SUM(#REF!)","v":{"$error":"#REF!"}},{"$f":"SUM(#REF!)","v":{"$error":"#REF!"}},{"$f":"SUM(#REF!)","v":{"$error":"#REF!"}},{"$f":"SUM(#REF!)","v":{"$error":"#REF!"}},{"$f":"SUM(#REF!)","v":{"$error":"#REF!"}},{"$f":"SUM(#REF!)","v":{"$error":"#REF!"}},{"$f":"SUM(#REF!)","v":{"$error":"#REF!"}},{"$f":"SUM(#REF!)","v":{"$error":"#REF!"}},{"$f":"SUM(#REF!)","v":{"$error":"#REF!"}},{"$f":"SUM(#REF!)","v":{"$error":"#REF!"}},{"$f":"SUM(#REF!)","v":{"$error":"#REF!"}},{"$f":"SUM(#REF!)","v":{"$error":"#REF!"}},{"$f":"SUM(#REF!)","v":{"$error":"#REF!"}},{"$f":"SUM(#REF!)","v":{"$error":"#REF!"}},{"$f":"SUM(#REF!)","v":{"$error":"#REF!"}},{"$f":"SUM(#REF!)","v":{"$error":"#REF!"}},{"$f":"SUM(#REF!)","v":{"$error":"#REF!"}},{"$f":"SUM(#REF!)","v":{"$error":"#REF!"}},{"$f":"SUM(#REF!)","v":{"$error":"#REF!"}},{"$f":"SUM(#REF!)","v":{"$error":"#REF!"}},{"$f":"SUM(#REF!)","v":{"$error":"#REF!"}},{"$f":"SUM(#REF!)","v":{"$error":"#REF!"}},{"$f":"SUM(#REF!)","v":{"$error":"#REF!"}},{"$f":"SUM(#REF!)","v":{"$error":"#REF!"}},{"$f":"SUM(#REF!)","v":{"$error":"#REF!"}},{"$f":"SUM(#REF!)","v":{"$error":"#REF!"}},{"$f":"SUM(#REF!)","v":{"$error":"#REF!"}},{"$f":"SUM(#REF!)","v":{"$error":"#REF!"}},{"$f":"SUM(#REF!)","v":{"$error":"#REF!"}},{"$f":"SUM(#REF!)","v":{"$error":"#REF!"}},{"$f":"SUM(#REF!)","v":{"$error":"#REF!"}},{"$f":"SUM(#REF!)","v":{"$error":"#REF!"}},{"$f":"SUM(#REF!)","v":{"$error":"#REF!"}},{"$f":"SUM(#REF!)","v":{"$error":"#REF!"}},{"$f":"SUM(#REF!)","v":{"$error":"#REF!"}},{"$f":"SUM(#REF!)","v":{"$error":"#REF!"}},{"$f":"SUM(#REF!)","v":{"$error":"#REF!"}},{"$f":"SUM(#REF!)","v":{"$error":"#REF!"}},{"$f":"SUM(#REF!)","v":{"$error":"#REF!"}},{"$f":"SUM(#REF!)","v":{"$error":"#REF!"}},{"$f":"SUM(#REF!)","v":{"$error":"#REF!"}},{"$f":"SUM(#REF!)","v":{"$error":"#REF!"}},{"$f":"SUM(#REF!)","v":{"$error":"#REF!"}},{"$f":"SUM(#REF!)","v":{"$error":"#REF!"}},{"$f":"SUM(#REF!)","v":{"$error":"#REF!"}},{"$f":"SUM(#REF!)","v":{"$error":"#REF!"}},{"$f":"SUM(#REF!)","v":{"$error":"#REF!"}},{"$f":"SUM(#REF!)","v":{"$error":"#REF!"}},{"$f":"SUM(#REF!)","v":{"$error":"#REF!"}},{"$f":"SUM(#REF!)","v":{"$error":"#REF!"}},{"$f":"SUM(#REF!)","v":{"$error":"#REF!"}},{"$f":"SUM(#REF!)","v":{"$error":"#REF!"}},{"$f":"SUM(#REF!)","v":{"$error":"#REF!"}},{"$f":"SUM(#REF!)","v":{"$error":"#REF!"}},{"$f":"SUM(#REF!)","v":{"$error":"#REF!"}},{"$f":"SUM(#REF!)","v":{"$error":"#REF!"}},{"$f":"SUM(#REF!)","v":{"$error":"#REF!"}},{"$f":"SUM(#REF!)","v":{"$error":"#REF!"}},{"$f":"SUM(#REF!)","v":{"$error":"#REF!"}},{"$f":"SUM(#REF!)","v":{"$error":"#REF!"}},{"$f":"SUM(#REF!)","v":{"$error":"#REF!"}},{"$f":"SUM(#REF!)","v":{"$error":"#REF!"}},{"$f":"SUM(#REF!)","v":{"$error":"#REF!"}},{"$f":"SUM(#REF!)","v":{"$error":"#REF!"}},{"$f":"SUM(#REF!)","v":{"$error":"#REF!"}},{"$f":"SUM(#REF!)","v":{"$error":"#REF!"}},{"$f":"SUM(#REF!)","v":{"$error":"#REF!"}},{"$f":"SUM(#REF!)","v":{"$error":"#REF!"}},{"$f":"SUM(#REF!)","v":{"$error":"#REF!"}},{"$f":"SUM(#REF!)","v":{"$error":"#REF!"}},{"$f":"SUM(#REF!)","v":{"$error":"#REF!"}},{"$f":"SUM(#REF!)","v":{"$error":"#REF!"}},{"$f":"SUM(#REF!)","v":{"$error":"#REF!"}},{"$f":"SUM(#REF!)","v":{"$error":"#REF!"}},{"$f":"SUM(#REF!)","v":{"$error":"#REF!"}},{"$f":"SUM(#REF!)","v":{"$error":"#REF!"}},{"$f":"SUM(#REF!)","v":{"$error":"#REF!"}},{"$f":"SUM(#REF!)","v":{"$error":"#REF!"}},{"$f":"SUM(#REF!)","v":{"$error":"#REF!"}},{"$f":"SUM(#REF!)","v":{"$error":"#REF!"}},{"$f":"SUM(#REF!)","v":{"$error":"#REF!"}},{"$f":"SUM(#REF!)","v":{"$error":"#REF!"}},{"$f":"SUM(#REF!)","v":{"$error":"#REF!"}},{"$f":"SUM(#REF!)","v":{"$error":"#REF!"}},{"$f":"SUM(#REF!)","v":{"$error":"#REF!"}},{"$f":"SUM(#REF!)","v":{"$error":"#REF!"}},{"$f":"SUM(#REF!)","v":{"$error":"#REF!"}},{"$f":"SUM(#REF!)","v":{"$error":"#REF!"}},{"$f":"SUM(#REF!)","v":{"$error":"#REF!"}},{"$f":"SUM(#REF!)","v":{"$error":"#REF!"}},{"$f":"SUM(#REF!)","v":{"$error":"#REF!"}},{"$f":"SUM(#REF!)","v":{"$error":"#REF!"}},{"$f":"SUM(#REF!)","v":{"$error":"#REF!"}},{"$f":"SUM(#REF!)","v":{"$error":"#REF!"}},{"$f":"SUM(#REF!)","v":{"$error":"#REF!"}},{"$f":"SUM(#REF!)","v":{"$error":"#REF!"}},{"$f":"SUM(#REF!)","v":{"$error":"#REF!"}},{"$f":"SUM(#REF!)","v":{"$error":"#REF!"}},{"$f":"SUM(#REF!)","v":{"$error":"#REF!"}},{"$f":"SUM(#REF!)","v":{"$error":"#REF!"}},{"$f":"SUM(#REF!)","v":{"$error":"#REF!"}},{"$f":"SUM(#REF!)","v":{"$error":"#REF!"}},{"$f":"SUM(#REF!)","v":{"$error":"#REF!"}},{"$f":"SUM(#REF!)","v":{"$error":"#REF!"}},{"$f":"SUM(#REF!)","v":{"$error":"#REF!"}},{"$f":"SUM(#REF!)","v":{"$error":"#REF!"}},{"$f":"SUM(#REF!)","v":{"$error":"#REF!"}},{"$f":"SUM(#REF!)","v":{"$error":"#REF!"}},{"$f":"SUM(#REF!)","v":{"$error":"#REF!"}},{"$f":"SUM(#REF!)","v":{"$error":"#REF!"}},{"$f":"SUM(#REF!)","v":{"$error":"#REF!"}},{"$f":"SUM(#REF!)","v":{"$error":"#REF!"}},{"$f":"SUM(#REF!)","v":{"$error":"#REF!"}},{"$f":"SUM(#REF!)","v":{"$error":"#REF!"}},{"$f":"SUM(#REF!)","v":{"$error":"#REF!"}},{"$f":"SUM(#REF!)","v":{"$error":"#REF!"}},{"$f":"SUM(#REF!)","v":{"$error":"#REF!"}},{"$f":"SUM(#REF!)","v":{"$error":"#REF!"}},{"$f":"SUM(#REF!)","v":{"$error":"#REF!"}},{"$f":"SUM(#REF!)","v":{"$error":"#REF!"}},{"$f":"SUM(#REF!)","v":{"$error":"#REF!"}},{"$f":"SUM(#REF!)","v":{"$error":"#REF!"}},{"$f":"SUM(#REF!)","v":{"$error":"#REF!"}},{"$f":"SUM(#REF!)","v":{"$error":"#REF!"}},{"$f":"SUM(#REF!)","v":{"$error":"#REF!"}},{"$f":"SUM(#REF!)","v":{"$error":"#REF!"}},{"$f":"SUM(#REF!)","v":{"$error":"#REF!"}},{"$f":"SUM(#REF!)","v":{"$error":"#REF!"}},{"$f":"SUM(#REF!)","v":{"$error":"#REF!"}},{"$f":"SUM(#REF!)","v":{"$error":"#REF!"}},{"$f":"SUM(#REF!)","v":{"$error":"#REF!"}},{"$f":"SUM(#REF!)","v":{"$error":"#REF!"}},{"$f":"SUM(#REF!)","v":{"$error":"#REF!"}},{"$f":"SUM(#REF!)","v":{"$error":"#REF!"}},{"$f":"SUM(#REF!)","v":{"$error":"#REF!"}},{"$f":"SUM(#REF!)","v":{"$error":"#REF!"}},{"$f":"SUM(#REF!)","v":{"$error":"#REF!"}},{"$f":"SUM(#REF!)","v":{"$error":"#REF!"}},{"$f":"SUM(#REF!)","v":{"$error":"#REF!"}},{"$f":"SUM(#REF!)","v":{"$error":"#REF!"}},{"$f":"SUM(#REF!)","v":{"$error":"#REF!"}},{"$f":"SUM(#REF!)","v":{"$error":"#REF!"}},{"$f":"SUM(#REF!)","v":{"$error":"#REF!"}},{"$f":"SUM(#REF!)","v":{"$error":"#REF!"}},{"$f":"SUM(#REF!)","v":{"$error":"#REF!"}},{"$f":"SUM(#REF!)","v":{"$error":"#REF!"}},{"$f":"SUM(#REF!)","v":{"$error":"#REF!"}},{"$f":"SUM(#REF!)","v":{"$error":"#REF!"}},{"$f":"SUM(#REF!)","v":{"$error":"#REF!"}},{"$f":"SUM(#REF!)","v":{"$error":"#REF!"}},{"$f":"SUM(#REF!)","v":{"$error":"#REF!"}},{"$f":"SUM(#REF!)","v":{"$error":"#REF!"}},{"$f":"SUM(#REF!)","v":{"$error":"#REF!"}},{"$f":"SUM(#REF!)","v":{"$error":"#REF!"}},{"$f":"SUM(#REF!)","v":{"$error":"#REF!"}},{"$f":"SUM(#REF!)","v":{"$error":"#REF!"}},{"$f":"SUM(#REF!)","v":{"$error":"#REF!"}},{"$f":"SUM(#REF!)","v":{"$error":"#REF!"}},{"$f":"SUM(#REF!)","v":{"$error":"#REF!"}},{"$f":"SUM(#REF!)","v":{"$error":"#REF!"}},{"$f":"SUM(#REF!)","v":{"$error":"#REF!"}},{"$f":"SUM(#REF!)","v":{"$error":"#REF!"}},{"$f":"SUM(#REF!)","v":{"$error":"#REF!"}},{"$f":"SUM(#REF!)","v":{"$error":"#REF!"}},{"$f":"SUM(#REF!)","v":{"$error":"#REF!"}},{"$f":"SUM(#REF!)","v":{"$error":"#REF!"}},{"$f":"SUM(#REF!)","v":{"$error":"#REF!"}},{"$f":"SUM(#REF!)","v":{"$error":"#REF!"}},{"$f":"SUM(#REF!)","v":{"$error":"#REF!"}},{"$f":"SUM(#REF!)","v":{"$error":"#REF!"}},{"$f":"SUM(#REF!)","v":{"$error":"#REF!"}},{"$f":"SUM(#REF!)","v":{"$error":"#REF!"}},{"$f":"SUM(#REF!)","v":{"$error":"#REF!"}},{"$f":"SUM(#REF!)","v":{"$error":"#REF!"}},{"$f":"SUM(#REF!)","v":{"$error":"#REF!"}},{"$f":"SUM(#REF!)","v":{"$error":"#REF!"}},{"$f":"SUM(#REF!)","v":{"$error":"#REF!"}},{"$f":"SUM(#REF!)","v":{"$error":"#REF!"}},{"$f":"SUM(#REF!)","v":{"$error":"#REF!"}},{"$f":"SUM(#REF!)","v":{"$error":"#REF!"}},{"$f":"SUM(#REF!)","v":{"$error":"#REF!"}},{"$f":"SUM(#REF!)","v":{"$error":"#REF!"}},{"$f":"SUM(#REF!)","v":{"$error":"#REF!"}},{"$f":"SUM(#REF!)","v":{"$error":"#REF!"}},{"$f":"SUM(#REF!)","v":{"$error":"#REF!"}},{"$f":"SUM(#REF!)","v":{"$error":"#REF!"}},{"$f":"SUM(#REF!)","v":{"$error":"#REF!"}},{"$f":"SUM(#REF!)","v":{"$error":"#REF!"}},{"$f":"SUM(#REF!)","v":{"$error":"#REF!"}},{"$f":"SUM(#REF!)","v":{"$error":"#REF!"}},{"$f":"SUM(#REF!)","v":{"$error":"#REF!"}},{"$f":"SUM(#REF!)","v":{"$error":"#REF!"}},{"$f":"SUM(#REF!)","v":{"$error":"#REF!"}},{"$f":"SUM(#REF!)","v":{"$error":"#REF!"}},{"$f":"SUM(#REF!)","v":{"$error":"#REF!"}},{"$f":"SUM(#REF!)","v":{"$error":"#REF!"}},{"$f":"SUM(#REF!)","v":{"$error":"#REF!"}},{"$f":"SUM(#REF!)","v":{"$error":"#REF!"}},{"$f":"SUM(#REF!)","v":{"$error":"#REF!"}},{"$f":"SUM(#REF!)","v":{"$error":"#REF!"}},{"$f":"SUM(#REF!)","v":{"$error":"#REF!"}},{"$f":"SUM(#REF!)","v":{"$error":"#REF!"}},{"$f":"SUM(#REF!)","v":{"$error":"#REF!"}},{"$f":"SUM(#REF!)","v":{"$error":"#REF!"}},{"$f":"SUM(#REF!)","v":{"$error":"#REF!"}},{"$f":"SUM(#REF!)","v":{"$error":"#REF!"}},{"$f":"SUM(#REF!)","v":{"$error":"#REF!"}},{"$f":"SUM(#REF!)","v":{"$error":"#REF!"}},{"$f":"SUM(#REF!)","v":{"$error":"#REF!"}},{"$f":"SUM(#REF!)","v":{"$error":"#REF!"}},{"$f":"SUM(#REF!)","v":{"$error":"#REF!"}},{"$f":"SUM(#REF!)","v":{"$error":"#REF!"}},{"$f":"SUM(#REF!)","v":{"$error":"#REF!"}},{"$f":"SUM(#REF!)","v":{"$error":"#REF!"}},{"$f":"SUM(#REF!)","v":{"$error":"#REF!"}},{"$f":"SUM(#REF!)","v":{"$error":"#REF!"}},{"$f":"SUM(#REF!)","v":{"$error":"#REF!"}},{"$f":"SUM(#REF!)","v":{"$error":"#REF!"}},{"$f":"SUM(#REF!)","v":{"$error":"#REF!"}},{"$f":"SUM(#REF!)","v":{"$error":"#REF!"}},{"$f":"SUM(#REF!)","v":{"$error":"#REF!"}},{"$f":"SUM(#REF!)","v":{"$error":"#REF!"}},{"$f":"SUM(#REF!)","v":{"$error":"#REF!"}},{"$f":"SUM(#REF!)","v":{"$error":"#REF!"}},{"$f":"SUM(#REF!)","v":{"$error":"#REF!"}},{"$f":"SUM(#REF!)","v":{"$error":"#REF!"}},{"$f":"SUM(#REF!)","v":{"$error":"#REF!"}},{"$f":"SUM(#REF!)","v":{"$error":"#REF!"}},{"$f":"SUM(#REF!)","v":{"$error":"#REF!"}},{"$f":"SUM(#REF!)","v":{"$error":"#REF!"}},{"$f":"SUM(#REF!)","v":{"$error":"#REF!"}},{"$f":"SUM(#REF!)","v":{"$error":"#REF!"}},{"$f":"SUM(#REF!)","v":{"$error":"#REF!"}},{"$f":"SUM(#REF!)","v":{"$error":"#REF!"}},{"$f":"SUM(#REF!)","v":{"$error":"#REF!"}},{"$f":"SUM(#REF!)","v":{"$error":"#REF!"}},{"$f":"SUM(#REF!)","v":{"$error":"#REF!"}},{"$f":"SUM(#REF!)","v":{"$error":"#REF!"}},{"$f":"SUM(#REF!)","v":{"$error":"#REF!"}},{"$f":"SUM(#REF!)","v":{"$error":"#REF!"}},{"$f":"SUM(#REF!)","v":{"$error":"#REF!"}},{"$f":"SUM(#REF!)","v":{"$error":"#REF!"}},{"$f":"SUM(#REF!)","v":{"$error":"#REF!"}},{"$f":"SUM(#REF!)","v":{"$error":"#REF!"}},{"$f":"SUM(#REF!)","v":{"$error":"#REF!"}},{"$f":"SUM(#REF!)","v":{"$error":"#REF!"}},{"$f":"SUM(#REF!)","v":{"$error":"#REF!"}},{"$f":"SUM(#REF!)","v":{"$error":"#REF!"}},{"$f":"SUM(#REF!)","v":{"$error":"#REF!"}},{"$f":"SUM(#REF!)","v":{"$error":"#REF!"}},{"$f":"SUM(#REF!)","v":{"$error":"#REF!"}},{"$f":"SUM(#REF!)","v":{"$error":"#REF!"}},{"$f":"SUM(#REF!)","v":{"$error":"#REF!"}},{"$f":"SUM(#REF!)","v":{"$error":"#REF!"}},{"$f":"SUM(#REF!)","v":{"$error":"#REF!"}},{"$f":"SUM(#REF!)","v":{"$error":"#REF!"}},{"$f":"SUM(#REF!)","v":{"$error":"#REF!"}},{"$f":"SUM(#REF!)","v":{"$error":"#REF!"}},{"$f":"SUM(#REF!)","v":{"$error":"#REF!"}},{"$f":"SUM(#REF!)","v":{"$error":"#REF!"}},{"$f":"SUM(#REF!)","v":{"$error":"#REF!"}},{"$f":"SUM(#REF!)","v":{"$error":"#REF!"}},{"$f":"SUM(#REF!)","v":{"$error":"#REF!"}},{"$f":"SUM(#REF!)","v":{"$error":"#REF!"}},{"$f":"SUM(#REF!)","v":{"$error":"#REF!"}},{"$f":"SUM(#REF!)","v":{"$error":"#REF!"}},{"$f":"SUM(#REF!)","v":{"$error":"#REF!"}},{"$f":"SUM(#REF!)","v":{"$error":"#REF!"}},{"$f":"SUM(#REF!)","v":{"$error":"#REF!"}},{"$f":"SUM(#REF!)","v":{"$error":"#REF!"}},{"$f":"SUM(#REF!)","v":{"$error":"#REF!"}},{"$f":"SUM(#REF!)","v":{"$error":"#REF!"}},{"$f":"SUM(#REF!)","v":{"$error":"#REF!"}},{"$f":"SUM(#REF!)","v":{"$error":"#REF!"}},{"$f":"SUM(#REF!)","v":{"$error":"#REF!"}},{"$f":"SUM(#REF!)","v":{"$error":"#REF!"}},{"$f":"SUM(#REF!)","v":{"$error":"#REF!"}},{"$f":"SUM(#REF!)","v":{"$error":"#REF!"}},{"$f":"SUM(#REF!)","v":{"$error":"#REF!"}},{"$f":"SUM(#REF!)","v":{"$error":"#REF!"}},{"$f":"SUM(#REF!)","v":{"$error":"#REF!"}},{"$f":"SUM(#REF!)","v":{"$error":"#REF!"}},{"$f":"SUM(#REF!)","v":{"$error":"#REF!"}},{"$f":"SUM(#REF!)","v":{"$error":"#REF!"}},{"$f":"SUM(#REF!)","v":{"$error":"#REF!"}},{"$f":"SUM(#REF!)","v":{"$error":"#REF!"}},{"$f":"SUM(#REF!)","v":{"$error":"#REF!"}},{"$f":"SUM(#REF!)","v":{"$error":"#REF!"}},{"$f":"SUM(#REF!)","v":{"$error":"#REF!"}},{"$f":"SUM(#REF!)","v":{"$error":"#REF!"}},{"$f":"SUM(#REF!)","v":{"$error":"#REF!"}},{"$f":"SUM(#REF!)","v":{"$error":"#REF!"}},{"$f":"SUM(#REF!)","v":{"$error":"#REF!"}},{"$f":"SUM(#REF!)","v":{"$error":"#REF!"}},{"$f":"SUM(#REF!)","v":{"$error":"#REF!"}},{"$f":"SUM(#REF!)","v":{"$error":"#REF!"}},{"$f":"SUM(#REF!)","v":{"$error":"#REF!"}},{"$f":"SUM(#REF!)","v":{"$error":"#REF!"}},{"$f":"SUM(#REF!)","v":{"$error":"#REF!"}},{"$f":"SUM(#REF!)","v":{"$error":"#REF!"}},{"$f":"SUM(#REF!)","v":{"$error":"#REF!"}},{"$f":"SUM(#REF!)","v":{"$error":"#REF!"}},{"$f":"SUM(#REF!)","v":{"$error":"#REF!"}},{"$f":"SUM(#REF!)","v":{"$error":"#REF!"}},{"$f":"SUM(#REF!)","v":{"$error":"#REF!"}},{"$f":"SUM(#REF!)","v":{"$error":"#REF!"}},{"$f":"SUM(#REF!)","v":{"$error":"#REF!"}},{"$f":"SUM(#REF!)","v":{"$error":"#REF!"}},{"$f":"SUM(#REF!)","v":{"$error":"#REF!"}},{"$f":"SUM(#REF!)","v":{"$error":"#REF!"}},{"$f":"SUM(#REF!)","v":{"$error":"#REF!"}},{"$f":"SUM(#REF!)","v":{"$error":"#REF!"}},{"$f":"SUM(#REF!)","v":{"$error":"#REF!"}},{"$f":"SUM(#REF!)","v":{"$error":"#REF!"}},{"$f":"SUM(#REF!)","v":{"$error":"#REF!"}},{"$f":"SUM(#REF!)","v":{"$error":"#REF!"}},{"$f":"SUM(#REF!)","v":{"$error":"#REF!"}},{"$f":"SUM(#REF!)","v":{"$error":"#REF!"}},{"$f":"SUM(#REF!)","v":{"$error":"#REF!"}},{"$f":"SUM(#REF!)","v":{"$error":"#REF!"}},{"$f":"SUM(#REF!)","v":{"$error":"#REF!"}},{"$f":"SUM(#REF!)","v":{"$error":"#REF!"}},{"$f":"SUM(#REF!)","v":{"$error":"#REF!"}},{"$f":"SUM(#REF!)","v":{"$error":"#REF!"}},{"$f":"SUM(#REF!)","v":{"$error":"#REF!"}},{"$f":"SUM(#REF!)","v":{"$error":"#REF!"}},{"$f":"SUM(#REF!)","v":{"$error":"#REF!"}},{"$f":"SUM(#REF!)","v":{"$error":"#REF!"}},{"$f":"SUM(#REF!)","v":{"$error":"#REF!"}},{"$f":"SUM(#REF!)","v":{"$error":"#REF!"}},{"$f":"SUM(#REF!)","v":{"$error":"#REF!"}},{"$f":"SUM(#REF!)","v":{"$error":"#REF!"}},{"$f":"SUM(#REF!)","v":{"$error":"#REF!"}},{"$f":"SUM(#REF!)","v":{"$error":"#REF!"}},{"$f":"SUM(#REF!)","v":{"$error":"#REF!"}},{"$f":"SUM(#REF!)","v":{"$error":"#REF!"}},{"$f":"SUM(#REF!)","v":{"$error":"#REF!"}},{"$f":"SUM(#REF!)","v":{"$error":"#REF!"}},{"$f":"SUM(#REF!)","v":{"$error":"#REF!"}},{"$f":"SUM(#REF!)","v":{"$error":"#REF!"}},{"$f":"SUM(#REF!)","v":{"$error":"#REF!"}},{"$f":"SUM(#REF!)","v":{"$error":"#REF!"}},{"$f":"SUM(#REF!)","v":{"$error":"#REF!"}},{"$f":"SUM(#REF!)","v":{"$error":"#REF!"}},{"$f":"SUM(#REF!)","v":{"$error":"#REF!"}},{"$f":"SUM(#REF!)","v":{"$error":"#REF!"}},{"$f":"SUM(#REF!)","v":{"$error":"#REF!"}},{"$f":"SUM(#REF!)","v":{"$error":"#REF!"}},{"$f":"SUM(#REF!)","v":{"$error":"#REF!"}},{"$f":"SUM(#REF!)","v":{"$error":"#REF!"}},{"$f":"SUM(#REF!)","v":{"$error":"#REF!"}},{"$f":"SUM(#REF!)","v":{"$error":"#REF!"}},{"$f":"SUM(#REF!)","v":{"$error":"#REF!"}},{"$f":"SUM(#REF!)","v":{"$error":"#REF!"}},{"$f":"SUM(#REF!)","v":{"$error":"#REF!"}},{"$f":"SUM(#REF!)","v":{"$error":"#REF!"}},{"$f":"SUM(#REF!)","v":{"$error":"#REF!"}},{"$f":"SUM(#REF!)","v":{"$error":"#REF!"}},{"$f":"SUM(#REF!)","v":{"$error":"#REF!"}},{"$f":"SUM(#REF!)","v":{"$error":"#REF!"}},{"$f":"SUM(#REF!)","v":{"$error":"#REF!"}},{"$f":"SUM(#REF!)","v":{"$error":"#REF!"}},{"$f":"SUM(#REF!)","v":{"$error":"#REF!"}},{"$f":"SUM(#REF!)","v":{"$error":"#REF!"}},{"$f":"SUM(#REF!)","v":{"$error":"#REF!"}},{"$f":"SUM(#REF!)","v":{"$error":"#REF!"}},{"$f":"SUM(#REF!)","v":{"$error":"#REF!"}},{"$f":"SUM(#REF!)","v":{"$error":"#REF!"}},{"$f":"SUM(#REF!)","v":{"$error":"#REF!"}},{"$f":"SUM(#REF!)","v":{"$error":"#REF!"}},{"$f":"SUM(#REF!)","v":{"$error":"#REF!"}},{"$f":"SUM(#REF!)","v":{"$error":"#REF!"}},{"$f":"SUM(#REF!)","v":{"$error":"#REF!"}},{"$f":"SUM(#REF!)","v":{"$error":"#REF!"}},{"$f":"SUM(#REF!)","v":{"$error":"#REF!"}},{"$f":"SUM(#REF!)","v":{"$error":"#REF!"}},{"$f":"SUM(#REF!)","v":{"$error":"#REF!"}},{"$f":"SUM(#REF!)","v":{"$error":"#REF!"}},{"$f":"SUM(#REF!)","v":{"$error":"#REF!"}},{"$f":"SUM(#REF!)","v":{"$error":"#REF!"}},{"$f":"SUM(#REF!)","v":{"$error":"#REF!"}},{"$f":"SUM(#REF!)","v":{"$error":"#REF!"}},{"$f":"SUM(#REF!)","v":{"$error":"#REF!"}},{"$f":"SUM(#REF!)","v":{"$error":"#REF!"}},{"$f":"SUM(#REF!)","v":{"$error":"#REF!"}},{"$f":"SUM(#REF!)","v":{"$error":"#REF!"}},{"$f":"SUM(#REF!)","v":{"$error":"#REF!"}},{"$f":"SUM(#REF!)","v":{"$error":"#REF!"}},{"$f":"SUM(#REF!)","v":{"$error":"#REF!"}},{"$f":"SUM(#REF!)","v":{"$error":"#REF!"}},{"$f":"SUM(#REF!)","v":{"$error":"#REF!"}},{"$f":"SUM(#REF!)","v":{"$error":"#REF!"}},{"$f":"SUM(#REF!)","v":{"$error":"#REF!"}},{"$f":"SUM(#REF!)","v":{"$error":"#REF!"}},{"$f":"SUM(#REF!)","v":{"$error":"#REF!"}},{"$f":"SUM(#REF!)","v":{"$error":"#REF!"}},{"$f":"SUM(#REF!)","v":{"$error":"#REF!"}},{"$f":"SUM(#REF!)","v":{"$error":"#REF!"}},{"$f":"SUM(#REF!)","v":{"$error":"#REF!"}},{"$f":"SUM(#REF!)","v":{"$error":"#REF!"}},{"$f":"SUM(#REF!)","v":{"$error":"#REF!"}},{"$f":"SUM(#REF!)","v":{"$error":"#REF!"}},{"$f":"SUM(#REF!)","v":{"$error":"#REF!"}},{"$f":"SUM(#REF!)","v":{"$error":"#REF!"}},{"$f":"SUM(#REF!)","v":{"$error":"#REF!"}},{"$f":"SUM(#REF!)","v":{"$error":"#REF!"}},{"$f":"SUM(#REF!)","v":{"$error":"#REF!"}},{"$f":"SUM(#REF!)","v":{"$error":"#REF!"}},{"$f":"SUM(#REF!)","v":{"$error":"#REF!"}},{"$f":"SUM(#REF!)","v":{"$error":"#REF!"}},{"$f":"SUM(#REF!)","v":{"$error":"#REF!"}},{"$f":"SUM(#REF!)","v":{"$error":"#REF!"}},{"$f":"SUM(#REF!)","v":{"$error":"#REF!"}},{"$f":"SUM(#REF!)","v":{"$error":"#REF!"}},{"$f":"SUM(#REF!)","v":{"$error":"#REF!"}},{"$f":"SUM(#REF!)","v":{"$error":"#REF!"}},{"$f":"SUM(#REF!)","v":{"$error":"#REF!"}},{"$f":"SUM(#REF!)","v":{"$error":"#REF!"}},{"$f":"SUM(#REF!)","v":{"$error":"#REF!"}},{"$f":"SUM(#REF!)","v":{"$error":"#REF!"}},{"$f":"SUM(#REF!)","v":{"$error":"#REF!"}},{"$f":"SUM(#REF!)","v":{"$error":"#REF!"}},{"$f":"SUM(#REF!)","v":{"$error":"#REF!"}},{"$f":"SUM(#REF!)","v":{"$error":"#REF!"}},{"$f":"SUM(#REF!)","v":{"$error":"#REF!"}},{"$f":"SUM(#REF!)","v":{"$error":"#REF!"}},{"$f":"SUM(#REF!)","v":{"$error":"#REF!"}},{"$f":"SUM(#REF!)","v":{"$error":"#REF!"}},{"$f":"SUM(#REF!)","v":{"$error":"#REF!"}},{"$f":"SUM(#REF!)","v":{"$error":"#REF!"}},{"$f":"SUM(#REF!)","v":{"$error":"#REF!"}},{"$f":"SUM(#REF!)","v":{"$error":"#REF!"}},{"$f":"SUM(#REF!)","v":{"$error":"#REF!"}},{"$f":"SUM(#REF!)","v":{"$error":"#REF!"}},{"$f":"SUM(#REF!)","v":{"$error":"#REF!"}},{"$f":"SUM(#REF!)","v":{"$error":"#REF!"}},{"$f":"SUM(#REF!)","v":{"$error":"#REF!"}},{"$f":"SUM(#REF!)","v":{"$error":"#REF!"}},{"$f":"SUM(#REF!)","v":{"$error":"#REF!"}},{"$f":"SUM(#REF!)","v":{"$error":"#REF!"}},{"$f":"SUM(#REF!)","v":{"$error":"#REF!"}},{"$f":"SUM(#REF!)","v":{"$error":"#REF!"}},{"$f":"SUM(#REF!)","v":{"$error":"#REF!"}},{"$f":"SUM(#REF!)","v":{"$error":"#REF!"}},{"$f":"SUM(#REF!)","v":{"$error":"#REF!"}},{"$f":"SUM(#REF!)","v":{"$error":"#REF!"}},{"$f":"SUM(#REF!)","v":{"$error":"#REF!"}},{"$f":"SUM(#REF!)","v":{"$error":"#REF!"}},{"$f":"SUM(#REF!)","v":{"$error":"#REF!"}},{"$f":"SUM(#REF!)","v":{"$error":"#REF!"}},{"$f":"SUM(#REF!)","v":{"$error":"#REF!"}},{"$f":"SUM(#REF!)","v":{"$error":"#REF!"}},{"$f":"SUM(#REF!)","v":{"$error":"#REF!"}},{"$f":"SUM(#REF!)","v":{"$error":"#REF!"}},{"$f":"SUM(#REF!)","v":{"$error":"#REF!"}},{"$f":"SUM(#REF!)","v":{"$error":"#REF!"}},{"$f":"SUM(#REF!)","v":{"$error":"#REF!"}},{"$f":"SUM(#REF!)","v":{"$error":"#REF!"}},{"$f":"SUM(#REF!)","v":{"$error":"#REF!"}},{"$f":"SUM(#REF!)","v":{"$error":"#REF!"}},{"$f":"SUM(#REF!)","v":{"$error":"#REF!"}},{"$f":"SUM(#REF!)","v":{"$error":"#REF!"}},{"$f":"SUM(#REF!)","v":{"$error":"#REF!"}},{"$f":"SUM(#REF!)","v":{"$error":"#REF!"}},{"$f":"SUM(#REF!)","v":{"$error":"#REF!"}},{"$f":"SUM(#REF!)","v":{"$error":"#REF!"}},{"$f":"SUM(#REF!)","v":{"$error":"#REF!"}},{"$f":"SUM(#REF!)","v":{"$error":"#REF!"}},{"$f":"SUM(#REF!)","v":{"$error":"#REF!"}},{"$f":"SUM(#REF!)","v":{"$error":"#REF!"}},{"$f":"SUM(#REF!)","v":{"$error":"#REF!"}},{"$f":"SUM(#REF!)","v":{"$error":"#REF!"}},{"$f":"SUM(#REF!)","v":{"$error":"#REF!"}},{"$f":"SUM(#REF!)","v":{"$error":"#REF!"}},{"$f":"SUM(#REF!)","v":{"$error":"#REF!"}},{"$f":"SUM(#REF!)","v":{"$error":"#REF!"}},{"$f":"SUM(#REF!)","v":{"$error":"#REF!"}},{"$f":"SUM(#REF!)","v":{"$error":"#REF!"}},{"$f":"SUM(#REF!)","v":{"$error":"#REF!"}},{"$f":"SUM(#REF!)","v":{"$error":"#REF!"}},{"$f":"SUM(#REF!)","v":{"$error":"#REF!"}},{"$f":"SUM(#REF!)","v":{"$error":"#REF!"}},{"$f":"SUM(#REF!)","v":{"$error":"#REF!"}},{"$f":"SUM(#REF!)","v":{"$error":"#REF!"}},{"$f":"SUM(#REF!)","v":{"$error":"#REF!"}},{"$f":"SUM(#REF!)","v":{"$error":"#REF!"}},{"$f":"SUM(#REF!)","v":{"$error":"#REF!"}},{"$f":"SUM(#REF!)","v":{"$error":"#REF!"}},{"$f":"SUM(#REF!)","v":{"$error":"#REF!"}},{"$f":"SUM(#REF!)","v":{"$error":"#REF!"}},{"$f":"SUM(#REF!)","v":{"$error":"#REF!"}},{"$f":"SUM(#REF!)","v":{"$error":"#REF!"}},{"$f":"SUM(#REF!)","v":{"$error":"#REF!"}},{"$f":"SUM(#REF!)","v":{"$error":"#REF!"}},{"$f":"SUM(#REF!)","v":{"$error":"#REF!"}},{"$f":"SUM(#REF!)","v":{"$error":"#REF!"}},{"$f":"SUM(#REF!)","v":{"$error":"#REF!"}},{"$f":"SUM(#REF!)","v":{"$error":"#REF!"}},{"$f":"SUM(#REF!)","v":{"$error":"#REF!"}},{"$f":"SUM(#REF!)","v":{"$error":"#REF!"}},{"$f":"SUM(#REF!)","v":{"$error":"#REF!"}},{"$f":"SUM(#REF!)","v":{"$error":"#REF!"}},{"$f":"SUM(#REF!)","v":{"$error":"#REF!"}},{"$f":"SUM(#REF!)","v":{"$error":"#REF!"}},{"$f":"SUM(#REF!)","v":{"$error":"#REF!"}},{"$f":"SUM(#REF!)","v":{"$error":"#REF!"}},{"$f":"SUM(#REF!)","v":{"$error":"#REF!"}},{"$f":"SUM(#REF!)","v":{"$error":"#REF!"}},{"$f":"SUM(#REF!)","v":{"$error":"#REF!"}},{"$f":"SUM(#REF!)","v":{"$error":"#REF!"}},{"$f":"SUM(#REF!)","v":{"$error":"#REF!"}},{"$f":"SUM(#REF!)","v":{"$error":"#REF!"}},{"$f":"SUM(#REF!)","v":{"$error":"#REF!"}},{"$f":"SUM(#REF!)","v":{"$error":"#REF!"}},{"$f":"SUM(#REF!)","v":{"$error":"#REF!"}},{"$f":"SUM(#REF!)","v":{"$error":"#REF!"}},{"$f":"SUM(#REF!)","v":{"$error":"#REF!"}},{"$f":"SUM(#REF!)","v":{"$error":"#REF!"}},{"$f":"SUM(#REF!)","v":{"$error":"#REF!"}},{"$f":"SUM(#REF!)","v":{"$error":"#REF!"}},{"$f":"SUM(#REF!)","v":{"$error":"#REF!"}},{"$f":"SUM(#REF!)","v":{"$error":"#REF!"}},{"$f":"SUM(#REF!)","v":{"$error":"#REF!"}},{"$f":"SUM(#REF!)","v":{"$error":"#REF!"}},{"$f":"SUM(#REF!)","v":{"$error":"#REF!"}},{"$f":"SUM(#REF!)","v":{"$error":"#REF!"}},{"$f":"SUM(#REF!)","v":{"$error":"#REF!"}},{"$f":"SUM(#REF!)","v":{"$error":"#REF!"}},{"$f":"SUM(#REF!)","v":{"$error":"#REF!"}},{"$f":"SUM(#REF!)","v":{"$error":"#REF!"}},{"$f":"SUM(#REF!)","v":{"$error":"#REF!"}},{"$f":"SUM(#REF!)","v":{"$error":"#REF!"}},{"$f":"SUM(#REF!)","v":{"$error":"#REF!"}},{"$f":"SUM(#REF!)","v":{"$error":"#REF!"}},{"$f":"SUM(#REF!)","v":{"$error":"#REF!"}},{"$f":"SUM(#REF!)","v":{"$error":"#REF!"}},{"$f":"SUM(#REF!)","v":{"$error":"#REF!"}},{"$f":"SUM(#REF!)","v":{"$error":"#REF!"}},{"$f":"SUM(#REF!)","v":{"$error":"#REF!"}},{"$f":"SUM(#REF!)","v":{"$error":"#REF!"}},{"$f":"SUM(#REF!)","v":{"$error":"#REF!"}},{"$f":"SUM(#REF!)","v":{"$error":"#REF!"}},{"$f":"SUM(#REF!)","v":{"$error":"#REF!"}},{"$f":"SUM(#REF!)","v":{"$error":"#REF!"}},{"$f":"SUM(#REF!)","v":{"$error":"#REF!"}},{"$f":"SUM(#REF!)","v":{"$error":"#REF!"}},{"$f":"SUM(#REF!)","v":{"$error":"#REF!"}},{"$f":"SUM(#REF!)","v":{"$error":"#REF!"}},{"$f":"SUM(#REF!)","v":{"$error":"#REF!"}},{"$f":"SUM(#REF!)","v":{"$error":"#REF!"}},{"$f":"SUM(#REF!)","v":{"$error":"#REF!"}},{"$f":"SUM(#REF!)","v":{"$error":"#REF!"}},{"$f":"SUM(#REF!)","v":{"$error":"#REF!"}},{"$f":"SUM(#REF!)","v":{"$error":"#REF!"}},{"$f":"SUM(#REF!)","v":{"$error":"#REF!"}},{"$f":"SUM(#REF!)","v":{"$error":"#REF!"}},{"$f":"SUM(#REF!)","v":{"$error":"#REF!"}},{"$f":"SUM(#REF!)","v":{"$error":"#REF!"}},{"$f":"SUM(#REF!)","v":{"$error":"#REF!"}},{"$f":"SUM(#REF!)","v":{"$error":"#REF!"}},{"$f":"SUM(#REF!)","v":{"$error":"#REF!"}},{"$f":"SUM(#REF!)","v":{"$error":"#REF!"}},{"$f":"SUM(#REF!)","v":{"$error":"#REF!"}},{"$f":"SUM(#REF!)","v":{"$error":"#REF!"}},{"$f":"SUM(#REF!)","v":{"$error":"#REF!"}},{"$f":"SUM(#REF!)","v":{"$error":"#REF!"}},{"$f":"SUM(#REF!)","v":{"$error":"#REF!"}},{"$f":"SUM(#REF!)","v":{"$error":"#REF!"}},{"$f":"SUM(#REF!)","v":{"$error":"#REF!"}},{"$f":"SUM(#REF!)","v":{"$error":"#REF!"}},{"$f":"SUM(#REF!)","v":{"$error":"#REF!"}},{"$f":"SUM(#REF!)","v":{"$error":"#REF!"}},{"$f":"SUM(#REF!)","v":{"$error":"#REF!"}},{"$f":"SUM(#REF!)","v":{"$error":"#REF!"}},{"$f":"SUM(#REF!)","v":{"$error":"#REF!"}},{"$f":"SUM(#REF!)","v":{"$error":"#REF!"}},{"$f":"SUM(#REF!)","v":{"$error":"#REF!"}},{"$f":"SUM(#REF!)","v":{"$error":"#REF!"}},{"$f":"SUM(#REF!)","v":{"$error":"#REF!"}},{"$f":"SUM(#REF!)","v":{"$error":"#REF!"}},{"$f":"SUM(#REF!)","v":{"$error":"#REF!"}},{"$f":"SUM(#REF!)","v":{"$error":"#REF!"}},{"$f":"SUM(#REF!)","v":{"$error":"#REF!"}},{"$f":"SUM(#REF!)","v":{"$error":"#REF!"}},{"$f":"SUM(#REF!)","v":{"$error":"#REF!"}},{"$f":"SUM(#REF!)","v":{"$error":"#REF!"}},{"$f":"SUM(#REF!)","v":{"$error":"#REF!"}},{"$f":"SUM(#REF!)","v":{"$error":"#REF!"}},{"$f":"SUM(#REF!)","v":{"$error":"#REF!"}},{"$f":"SUM(#REF!)","v":{"$error":"#REF!"}},{"$f":"SUM(#REF!)","v":{"$error":"#REF!"}},{"$f":"SUM(#REF!)","v":{"$error":"#REF!"}},{"$f":"SUM(#REF!)","v":{"$error":"#REF!"}},{"$f":"SUM(#REF!)","v":{"$error":"#REF!"}},{"$f":"SUM(#REF!)","v":{"$error":"#REF!"}},{"$f":"SUM(#REF!)","v":{"$error":"#REF!"}},{"$f":"SUM(#REF!)","v":{"$error":"#REF!"}},{"$f":"SUM(#REF!)","v":{"$error":"#REF!"}},{"$f":"SUM(#REF!)","v":{"$error":"#REF!"}},{"$f":"SUM(#REF!)","v":{"$error":"#REF!"}},{"$f":"SUM(#REF!)","v":{"$error":"#REF!"}},{"$f":"SUM(#REF!)","v":{"$error":"#REF!"}},{"$f":"SUM(#REF!)","v":{"$error":"#REF!"}},{"$f":"SUM(#REF!)","v":{"$error":"#REF!"}},{"$f":"SUM(#REF!)","v":{"$error":"#REF!"}},{"$f":"SUM(#REF!)","v":{"$error":"#REF!"}},{"$f":"SUM(#REF!)","v":{"$error":"#REF!"}},{"$f":"SUM(#REF!)","v":{"$error":"#REF!"}},{"$f":"SUM(#REF!)","v":{"$error":"#REF!"}},{"$f":"SUM(#REF!)","v":{"$error":"#REF!"}},{"$f":"SUM(#REF!)","v":{"$error":"#REF!"}},{"$f":"SUM(#REF!)","v":{"$error":"#REF!"}},{"$f":"SUM(#REF!)","v":{"$error":"#REF!"}},{"$f":"SUM(#REF!)","v":{"$error":"#REF!"}},{"$f":"SUM(#REF!)","v":{"$error":"#REF!"}},{"$f":"SUM(#REF!)","v":{"$error":"#REF!"}},{"$f":"SUM(#REF!)","v":{"$error":"#REF!"}},{"$f":"SUM(#REF!)","v":{"$error":"#REF!"}},{"$f":"SUM(#REF!)","v":{"$error":"#REF!"}},{"$f":"SUM(#REF!)","v":{"$error":"#REF!"}},{"$f":"SUM(#REF!)","v":{"$error":"#REF!"}},{"$f":"SUM(#REF!)","v":{"$error":"#REF!"}},{"$f":"SUM(#REF!)","v":{"$error":"#REF!"}},{"$f":"SUM(#REF!)","v":{"$error":"#REF!"}},{"$f":"SUM(#REF!)","v":{"$error":"#REF!"}},{"$f":"SUM(#REF!)","v":{"$error":"#REF!"}},{"$f":"SUM(#REF!)","v":{"$error":"#REF!"}},{"$f":"SUM(#REF!)","v":{"$error":"#REF!"}},{"$f":"SUM(#REF!)","v":{"$error":"#REF!"}},{"$f":"SUM(#REF!)","v":{"$error":"#REF!"}},{"$f":"SUM(#REF!)","v":{"$error":"#REF!"}},{"$f":"SUM(#REF!)","v":{"$error":"#REF!"}},{"$f":"SUM(#REF!)","v":{"$error":"#REF!"}},{"$f":"SUM(#REF!)","v":{"$error":"#REF!"}},{"$f":"SUM(#REF!)","v":{"$error":"#REF!"}},{"$f":"SUM(#REF!)","v":{"$error":"#REF!"}},{"$f":"SUM(#REF!)","v":{"$error":"#REF!"}},{"$f":"SUM(#REF!)","v":{"$error":"#REF!"}},{"$f":"SUM(#REF!)","v":{"$error":"#REF!"}},{"$f":"SUM(#REF!)","v":{"$error":"#REF!"}},{"$f":"SUM(#REF!)","v":{"$error":"#REF!"}},{"$f":"SUM(#REF!)","v":{"$error":"#REF!"}},{"$f":"SUM(#REF!)","v":{"$error":"#REF!"}},{"$f":"SUM(#REF!)","v":{"$error":"#REF!"}},{"$f":"SUM(#REF!)","v":{"$error":"#REF!"}},{"$f":"SUM(#REF!)","v":{"$error":"#REF!"}},{"$f":"SUM(#REF!)","v":{"$error":"#REF!"}},{"$f":"SUM(#REF!)","v":{"$error":"#REF!"}},{"$f":"SUM(#REF!)","v":{"$error":"#REF!"}},{"$f":"SUM(#REF!)","v":{"$error":"#REF!"}},{"$f":"SUM(#REF!)","v":{"$error":"#REF!"}},{"$f":"SUM(#REF!)","v":{"$error":"#REF!"}},{"$f":"SUM(#REF!)","v":{"$error":"#REF!"}},{"$f":"SUM(#REF!)","v":{"$error":"#REF!"}},{"$f":"SUM(#REF!)","v":{"$error":"#REF!"}},{"$f":"SUM(#REF!)","v":{"$error":"#REF!"}},{"$f":"SUM(#REF!)","v":{"$error":"#REF!"}},{"$f":"SUM(#REF!)","v":{"$error":"#REF!"}},{"$f":"SUM(#REF!)","v":{"$error":"#REF!"}},{"$f":"SUM(#REF!)","v":{"$error":"#REF!"}},{"$f":"SUM(#REF!)","v":{"$error":"#REF!"}},{"$f":"SUM(#REF!)","v":{"$error":"#REF!"}},{"$f":"SUM(#REF!)","v":{"$error":"#REF!"}},{"$f":"SUM(#REF!)","v":{"$error":"#REF!"}},{"$f":"SUM(#REF!)","v":{"$error":"#REF!"}},{"$f":"SUM(#REF!)","v":{"$error":"#REF!"}},{"$f":"SUM(#REF!)","v":{"$error":"#REF!"}},{"$f":"SUM(#REF!)","v":{"$error":"#REF!"}},{"$f":"SUM(#REF!)","v":{"$error":"#REF!"}},{"$f":"SUM(#REF!)","v":{"$error":"#REF!"}},{"$f":"SUM(#REF!)","v":{"$error":"#REF!"}},{"$f":"SUM(#REF!)","v":{"$error":"#REF!"}},{"$f":"SUM(#REF!)","v":{"$error":"#REF!"}},{"$f":"SUM(#REF!)","v":{"$error":"#REF!"}},{"$f":"SUM(#REF!)","v":{"$error":"#REF!"}},{"$f":"SUM(#REF!)","v":{"$error":"#REF!"}},{"$f":"SUM(#REF!)","v":{"$error":"#REF!"}},{"$f":"SUM(#REF!)","v":{"$error":"#REF!"}},{"$f":"SUM(#REF!)","v":{"$error":"#REF!"}},{"$f":"SUM(#REF!)","v":{"$error":"#REF!"}},{"$f":"SUM(#REF!)","v":{"$error":"#REF!"}},{"$f":"SUM(#REF!)","v":{"$error":"#REF!"}},{"$f":"SUM(#REF!)","v":{"$error":"#REF!"}},{"$f":"SUM(#REF!)","v":{"$error":"#REF!"}},{"$f":"SUM(#REF!)","v":{"$error":"#REF!"}},{"$f":"SUM(#REF!)","v":{"$error":"#REF!"}},{"$f":"SUM(#REF!)","v":{"$error":"#REF!"}},{"$f":"SUM(#REF!)","v":{"$error":"#REF!"}},{"$f":"SUM(#REF!)","v":{"$error":"#REF!"}},{"$f":"SUM(#REF!)","v":{"$error":"#REF!"}},{"$f":"SUM(#REF!)","v":{"$error":"#REF!"}},{"$f":"SUM(#REF!)","v":{"$error":"#REF!"}},{"$f":"SUM(#REF!)","v":{"$error":"#REF!"}},{"$f":"SUM(#REF!)","v":{"$error":"#REF!"}},{"$f":"SUM(#REF!)","v":{"$error":"#REF!"}},{"$f":"SUM(#REF!)","v":{"$error":"#REF!"}},{"$f":"SUM(#REF!)","v":{"$error":"#REF!"}},{"$f":"SUM(#REF!)","v":{"$error":"#REF!"}},{"$f":"SUM(#REF!)","v":{"$error":"#REF!"}},{"$f":"SUM(#REF!)","v":{"$error":"#REF!"}},{"$f":"SUM(#REF!)","v":{"$error":"#REF!"}},{"$f":"SUM(#REF!)","v":{"$error":"#REF!"}},{"$f":"SUM(#REF!)","v":{"$error":"#REF!"}},{"$f":"SUM(#REF!)","v":{"$error":"#REF!"}},{"$f":"SUM(#REF!)","v":{"$error":"#REF!"}},{"$f":"SUM(#REF!)","v":{"$error":"#REF!"}},{"$f":"SUM(#REF!)","v":{"$error":"#REF!"}},{"$f":"SUM(#REF!)","v":{"$error":"#REF!"}},{"$f":"SUM(#REF!)","v":{"$error":"#REF!"}},{"$f":"SUM(#REF!)","v":{"$error":"#REF!"}},{"$f":"SUM(#REF!)","v":{"$error":"#REF!"}},{"$f":"SUM(#REF!)","v":{"$error":"#REF!"}},{"$f":"SUM(#REF!)","v":{"$error":"#REF!"}},{"$f":"SUM(#REF!)","v":{"$error":"#REF!"}},{"$f":"SUM(#REF!)","v":{"$error":"#REF!"}},{"$f":"SUM(#REF!)","v":{"$error":"#REF!"}},{"$f":"SUM(#REF!)","v":{"$error":"#REF!"}},{"$f":"SUM(#REF!)","v":{"$error":"#REF!"}},{"$f":"SUM(#REF!)","v":{"$error":"#REF!"}},{"$f":"SUM(#REF!)","v":{"$error":"#REF!"}},{"$f":"SUM(#REF!)","v":{"$error":"#REF!"}},{"$f":"SUM(#REF!)","v":{"$error":"#REF!"}},{"$f":"SUM(#REF!)","v":{"$error":"#REF!"}},{"$f":"SUM(#REF!)","v":{"$error":"#REF!"}},{"$f":"SUM(#REF!)","v":{"$error":"#REF!"}},{"$f":"SUM(#REF!)","v":{"$error":"#REF!"}},{"$f":"SUM(#REF!)","v":{"$error":"#REF!"}},{"$f":"SUM(#REF!)","v":{"$error":"#REF!"}},{"$f":"SUM(#REF!)","v":{"$error":"#REF!"}},{"$f":"SUM(#REF!)","v":{"$error":"#REF!"}},{"$f":"SUM(#REF!)","v":{"$error":"#REF!"}},{"$f":"SUM(#REF!)","v":{"$error":"#REF!"}},{"$f":"SUM(#REF!)","v":{"$error":"#REF!"}},{"$f":"SUM(#REF!)","v":{"$error":"#REF!"}},{"$f":"SUM(#REF!)","v":{"$error":"#REF!"}},{"$f":"SUM(#REF!)","v":{"$error":"#REF!"}},{"$f":"SUM(#REF!)","v":{"$error":"#REF!"}},{"$f":"SUM(#REF!)","v":{"$error":"#REF!"}},{"$f":"SUM(#REF!)","v":{"$error":"#REF!"}},{"$f":"SUM(#REF!)","v":{"$error":"#REF!"}},{"$f":"SUM(#REF!)","v":{"$error":"#REF!"}},{"$f":"SUM(#REF!)","v":{"$error":"#REF!"}},{"$f":"SUM(#REF!)","v":{"$error":"#REF!"}},{"$f":"SUM(#REF!)","v":{"$error":"#REF!"}},{"$f":"SUM(#REF!)","v":{"$error":"#REF!"}},{"$f":"SUM(#REF!)","v":{"$error":"#REF!"}},{"$f":"SUM(#REF!)","v":{"$error":"#REF!"}},{"$f":"SUM(#REF!)","v":{"$error":"#REF!"}},{"$f":"SUM(#REF!)","v":{"$error":"#REF!"}},{"$f":"SUM(#REF!)","v":{"$error":"#REF!"}},{"$f":"SUM(#REF!)","v":{"$error":"#REF!"}},{"$f":"SUM(#REF!)","v":{"$error":"#REF!"}},{"$f":"SUM(#REF!)","v":{"$error":"#REF!"}},{"$f":"SUM(#REF!)","v":{"$error":"#REF!"}},{"$f":"SUM(#REF!)","v":{"$error":"#REF!"}},{"$f":"SUM(#REF!)","v":{"$error":"#REF!"}},{"$f":"SUM(#REF!)","v":{"$error":"#REF!"}},{"$f":"SUM(#REF!)","v":{"$error":"#REF!"}},{"$f":"SUM(#REF!)","v":{"$error":"#REF!"}},{"$f":"SUM(#REF!)","v":{"$error":"#REF!"}},{"$f":"SUM(#REF!)","v":{"$error":"#REF!"}},{"$f":"SUM(#REF!)","v":{"$error":"#REF!"}},{"$f":"SUM(#REF!)","v":{"$error":"#REF!"}},{"$f":"SUM(#REF!)","v":{"$error":"#REF!"}},{"$f":"SUM(#REF!)","v":{"$error":"#REF!"}},{"$f":"SUM(#REF!)","v":{"$error":"#REF!"}},{"$f":"SUM(#REF!)","v":{"$error":"#REF!"}},{"$f":"SUM(#REF!)","v":{"$error":"#REF!"}},{"$f":"SUM(#REF!)","v":{"$error":"#REF!"}},{"$f":"SUM(#REF!)","v":{"$error":"#REF!"}},{"$f":"SUM(#REF!)","v":{"$error":"#REF!"}},{"$f":"SUM(#REF!)","v":{"$error":"#REF!"}},{"$f":"SUM(#REF!)","v":{"$error":"#REF!"}},{"$f":"SUM(#REF!)","v":{"$error":"#REF!"}},{"$f":"SUM(#REF!)","v":{"$error":"#REF!"}},{"$f":"SUM(#REF!)","v":{"$error":"#REF!"}},{"$f":"SUM(#REF!)","v":{"$error":"#REF!"}},{"$f":"SUM(#REF!)","v":{"$error":"#REF!"}},{"$f":"SUM(#REF!)","v":{"$error":"#REF!"}},{"$f":"SUM(#REF!)","v":{"$error":"#REF!"}},{"$f":"SUM(#REF!)","v":{"$error":"#REF!"}},{"$f":"SUM(#REF!)","v":{"$error":"#REF!"}},{"$f":"SUM(#REF!)","v":{"$error":"#REF!"}},{"$f":"SUM(#REF!)","v":{"$error":"#REF!"}},{"$f":"SUM(#REF!)","v":{"$error":"#REF!"}},{"$f":"SUM(#REF!)","v":{"$error":"#REF!"}},{"$f":"SUM(#REF!)","v":{"$error":"#REF!"}},{"$f":"SUM(#REF!)","v":{"$error":"#REF!"}},{"$f":"SUM(#REF!)","v":{"$error":"#REF!"}},{"$f":"SUM(#REF!)","v":{"$error":"#REF!"}},{"$f":"SUM(#REF!)","v":{"$error":"#REF!"}},{"$f":"SUM(#REF!)","v":{"$error":"#REF!"}},{"$f":"SUM(#REF!)","v":{"$error":"#REF!"}},{"$f":"SUM(#REF!)","v":{"$error":"#REF!"}},{"$f":"SUM(#REF!)","v":{"$error":"#REF!"}},{"$f":"SUM(#REF!)","v":{"$error":"#REF!"}},{"$f":"SUM(#REF!)","v":{"$error":"#REF!"}},{"$f":"SUM(#REF!)","v":{"$error":"#REF!"}},{"$f":"SUM(#REF!)","v":{"$error":"#REF!"}},{"$f":"SUM(#REF!)","v":{"$error":"#REF!"}},{"$f":"SUM(#REF!)","v":{"$error":"#REF!"}},{"$f":"SUM(#REF!)","v":{"$error":"#REF!"}},{"$f":"SUM(#REF!)","v":{"$error":"#REF!"}},{"$f":"SUM(#REF!)","v":{"$error":"#REF!"}},{"$f":"SUM(#REF!)","v":{"$error":"#REF!"}},{"$f":"SUM(#REF!)","v":{"$error":"#REF!"}},{"$f":"SUM(#REF!)","v":{"$error":"#REF!"}},{"$f":"SUM(#REF!)","v":{"$error":"#REF!"}},{"$f":"SUM(#REF!)","v":{"$error":"#REF!"}},{"$f":"SUM(#REF!)","v":{"$error":"#REF!"}},{"$f":"SUM(#REF!)","v":{"$error":"#REF!"}},{"$f":"SUM(#REF!)","v":{"$error":"#REF!"}},{"$f":"SUM(#REF!)","v":{"$error":"#REF!"}},{"$f":"SUM(#REF!)","v":{"$error":"#REF!"}},{"$f":"SUM(#REF!)","v":{"$error":"#REF!"}},{"$f":"SUM(#REF!)","v":{"$error":"#REF!"}},{"$f":"SUM(#REF!)","v":{"$error":"#REF!"}},{"$f":"SUM(#REF!)","v":{"$error":"#REF!"}},{"$f":"SUM(#REF!)","v":{"$error":"#REF!"}},{"$f":"SUM(#REF!)","v":{"$error":"#REF!"}},{"$f":"SUM(#REF!)","v":{"$error":"#REF!"}},{"$f":"SUM(#REF!)","v":{"$error":"#REF!"}},{"$f":"SUM(#REF!)","v":{"$error":"#REF!"}},{"$f":"SUM(#REF!)","v":{"$error":"#REF!"}},{"$f":"SUM(#REF!)","v":{"$error":"#REF!"}},{"$f":"SUM(#REF!)","v":{"$error":"#REF!"}},{"$f":"SUM(#REF!)","v":{"$error":"#REF!"}},{"$f":"SUM(#REF!)","v":{"$error":"#REF!"}},{"$f":"SUM(#REF!)","v":{"$error":"#REF!"}},{"$f":"SUM(#REF!)","v":{"$error":"#REF!"}},{"$f":"SUM(#REF!)","v":{"$error":"#REF!"}},{"$f":"SUM(#REF!)","v":{"$error":"#REF!"}},{"$f":"SUM(#REF!)","v":{"$error":"#REF!"}},{"$f":"SUM(#REF!)","v":{"$error":"#REF!"}},{"$f":"SUM(#REF!)","v":{"$error":"#REF!"}},{"$f":"SUM(#REF!)","v":{"$error":"#REF!"}},{"$f":"SUM(#REF!)","v":{"$error":"#REF!"}},{"$f":"SUM(#REF!)","v":{"$error":"#REF!"}},{"$f":"SUM(#REF!)","v":{"$error":"#REF!"}},{"$f":"SUM(#REF!)","v":{"$error":"#REF!"}},{"$f":"SUM(#REF!)","v":{"$error":"#REF!"}},{"$f":"SUM(#REF!)","v":{"$error":"#REF!"}},{"$f":"SUM(#REF!)","v":{"$error":"#REF!"}},{"$f":"SUM(#REF!)","v":{"$error":"#REF!"}},{"$f":"SUM(#REF!)","v":{"$error":"#REF!"}},{"$f":"SUM(#REF!)","v":{"$error":"#REF!"}},{"$f":"SUM(#REF!)","v":{"$error":"#REF!"}},{"$f":"SUM(#REF!)","v":{"$error":"#REF!"}},{"$f":"SUM(#REF!)","v":{"$error":"#REF!"}},{"$f":"SUM(#REF!)","v":{"$error":"#REF!"}},{"$f":"SUM(#REF!)","v":{"$error":"#REF!"}},{"$f":"SUM(#REF!)","v":{"$error":"#REF!"}},{"$f":"SUM(#REF!)","v":{"$error":"#REF!"}},{"$f":"SUM(#REF!)","v":{"$error":"#REF!"}},{"$f":"SUM(#REF!)","v":{"$error":"#REF!"}},{"$f":"SUM(#REF!)","v":{"$error":"#REF!"}},{"$f":"SUM(#REF!)","v":{"$error":"#REF!"}},{"$f":"SUM(#REF!)","v":{"$error":"#REF!"}},{"$f":"SUM(#REF!)","v":{"$error":"#REF!"}},{"$f":"SUM(#REF!)","v":{"$error":"#REF!"}},{"$f":"SUM(#REF!)","v":{"$error":"#REF!"}},{"$f":"SUM(#REF!)","v":{"$error":"#REF!"}},{"$f":"SUM(#REF!)","v":{"$error":"#REF!"}},{"$f":"SUM(#REF!)","v":{"$error":"#REF!"}},{"$f":"SUM(#REF!)","v":{"$error":"#REF!"}},{"$f":"SUM(#REF!)","v":{"$error":"#REF!"}},{"$f":"SUM(#REF!)","v":{"$error":"#REF!"}},{"$f":"SUM(#REF!)","v":{"$error":"#REF!"}},{"$f":"SUM(#REF!)","v":{"$error":"#REF!"}},{"$f":"SUM(#REF!)","v":{"$error":"#REF!"}},{"$f":"SUM(#REF!)","v":{"$error":"#REF!"}},{"$f":"SUM(#REF!)","v":{"$error":"#REF!"}},{"$f":"SUM(#REF!)","v":{"$error":"#REF!"}},{"$f":"SUM(#REF!)","v":{"$error":"#REF!"}},{"$f":"SUM(#REF!)","v":{"$error":"#REF!"}},{"$f":"SUM(#REF!)","v":{"$error":"#REF!"}},{"$f":"SUM(#REF!)","v":{"$error":"#REF!"}},{"$f":"SUM(#REF!)","v":{"$error":"#REF!"}},{"$f":"SUM(#REF!)","v":{"$error":"#REF!"}},{"$f":"SUM(#REF!)","v":{"$error":"#REF!"}},{"$f":"SUM(#REF!)","v":{"$error":"#REF!"}},{"$f":"SUM(#REF!)","v":{"$error":"#REF!"}},{"$f":"SUM(#REF!)","v":{"$error":"#REF!"}},{"$f":"SUM(#REF!)","v":{"$error":"#REF!"}},{"$f":"SUM(#REF!)","v":{"$error":"#REF!"}},{"$f":"SUM(#REF!)","v":{"$error":"#REF!"}},{"$f":"SUM(#REF!)","v":{"$error":"#REF!"}},{"$f":"SUM(#REF!)","v":{"$error":"#REF!"}},{"$f":"SUM(#REF!)","v":{"$error":"#REF!"}},{"$f":"SUM(#REF!)","v":{"$error":"#REF!"}},{"$f":"SUM(#REF!)","v":{"$error":"#REF!"}},{"$f":"SUM(#REF!)","v":{"$error":"#REF!"}},{"$f":"SUM(#REF!)","v":{"$error":"#REF!"}},{"$f":"SUM(#REF!)","v":{"$error":"#REF!"}},{"$f":"SUM(#REF!)","v":{"$error":"#REF!"}},{"$f":"SUM(#REF!)","v":{"$error":"#REF!"}},{"$f":"SUM(#REF!)","v":{"$error":"#REF!"}},{"$f":"SUM(#REF!)","v":{"$error":"#REF!"}},{"$f":"SUM(#REF!)","v":{"$error":"#REF!"}},{"$f":"SUM(#REF!)","v":{"$error":"#REF!"}},{"$f":"SUM(#REF!)","v":{"$error":"#REF!"}},{"$f":"SUM(#REF!)","v":{"$error":"#REF!"}},{"$f":"SUM(#REF!)","v":{"$error":"#REF!"}},{"$f":"SUM(#REF!)","v":{"$error":"#REF!"}},{"$f":"SUM(#REF!)","v":{"$error":"#REF!"}},{"$f":"SUM(#REF!)","v":{"$error":"#REF!"}},{"$f":"SUM(#REF!)","v":{"$error":"#REF!"}},{"$f":"SUM(#REF!)","v":{"$error":"#REF!"}},{"$f":"SUM(#REF!)","v":{"$error":"#REF!"}},{"$f":"SUM(#REF!)","v":{"$error":"#REF!"}},{"$f":"SUM(#REF!)","v":{"$error":"#REF!"}},{"$f":"SUM(#REF!)","v":{"$error":"#REF!"}},{"$f":"SUM(#REF!)","v":{"$error":"#REF!"}},{"$f":"SUM(#REF!)","v":{"$error":"#REF!"}},{"$f":"SUM(#REF!)","v":{"$error":"#REF!"}},{"$f":"SUM(#REF!)","v":{"$error":"#REF!"}},{"$f":"SUM(#REF!)","v":{"$error":"#REF!"}},{"$f":"SUM(#REF!)","v":{"$error":"#REF!"}},{"$f":"SUM(#REF!)","v":{"$error":"#REF!"}},{"$f":"SUM(#REF!)","v":{"$error":"#REF!"}},{"$f":"SUM(#REF!)","v":{"$error":"#REF!"}},{"$f":"SUM(#REF!)","v":{"$error":"#REF!"}},{"$f":"SUM(#REF!)","v":{"$error":"#REF!"}},{"$f":"SUM(#REF!)","v":{"$error":"#REF!"}},{"$f":"SUM(#REF!)","v":{"$error":"#REF!"}},{"$f":"SUM(#REF!)","v":{"$error":"#REF!"}},{"$f":"SUM(#REF!)","v":{"$error":"#REF!"}},{"$f":"SUM(#REF!)","v":{"$error":"#REF!"}},{"$f":"SUM(#REF!)","v":{"$error":"#REF!"}},{"$f":"SUM(#REF!)","v":{"$error":"#REF!"}},{"$f":"SUM(#REF!)","v":{"$error":"#REF!"}},{"$f":"SUM(#REF!)","v":{"$error":"#REF!"}},{"$f":"SUM(#REF!)","v":{"$error":"#REF!"}},{"$f":"SUM(#REF!)","v":{"$error":"#REF!"}},{"$f":"SUM(#REF!)","v":{"$error":"#REF!"}},{"$f":"SUM(#REF!)","v":{"$error":"#REF!"}},{"$f":"SUM(#REF!)","v":{"$error":"#REF!"}},{"$f":"SUM(#REF!)","v":{"$error":"#REF!"}},{"$f":"SUM(#REF!)","v":{"$error":"#REF!"}},{"$f":"SUM(#REF!)","v":{"$error":"#REF!"}},{"$f":"SUM(#REF!)","v":{"$error":"#REF!"}},{"$f":"SUM(#REF!)","v":{"$error":"#REF!"}},{"$f":"SUM(#REF!)","v":{"$error":"#REF!"}},{"$f":"SUM(#REF!)","v":{"$error":"#REF!"}},{"$f":"SUM(#REF!)","v":{"$error":"#REF!"}},{"$f":"SUM(#REF!)","v":{"$error":"#REF!"}},{"$f":"SUM(#REF!)","v":{"$error":"#REF!"}},{"$f":"SUM(#REF!)","v":{"$error":"#REF!"}},{"$f":"SUM(#REF!)","v":{"$error":"#REF!"}},{"$f":"SUM(#REF!)","v":{"$error":"#REF!"}},{"$f":"SUM(#REF!)","v":{"$error":"#REF!"}},{"$f":"SUM(#REF!)","v":{"$error":"#REF!"}},{"$f":"SUM(#REF!)","v":{"$error":"#REF!"}},{"$f":"SUM(#REF!)","v":{"$error":"#REF!"}},{"$f":"SUM(#REF!)","v":{"$error":"#REF!"}},{"$f":"SUM(#REF!)","v":{"$error":"#REF!"}},{"$f":"SUM(#REF!)","v":{"$error":"#REF!"}},{"$f":"SUM(#REF!)","v":{"$error":"#REF!"}},{"$f":"SUM(#REF!)","v":{"$error":"#REF!"}},{"$f":"SUM(#REF!)","v":{"$error":"#REF!"}},{"$f":"SUM(#REF!)","v":{"$error":"#REF!"}},{"$f":"SUM(#REF!)","v":{"$error":"#REF!"}},{"$f":"SUM(#REF!)","v":{"$error":"#REF!"}},{"$f":"SUM(#REF!)","v":{"$error":"#REF!"}},{"$f":"SUM(#REF!)","v":{"$error":"#REF!"}},{"$f":"SUM(#REF!)","v":{"$error":"#REF!"}},{"$f":"SUM(#REF!)","v":{"$error":"#REF!"}},{"$f":"SUM(#REF!)","v":{"$error":"#REF!"}},{"$f":"SUM(#REF!)","v":{"$error":"#REF!"}},{"$f":"SUM(#REF!)","v":{"$error":"#REF!"}},{"$f":"SUM(#REF!)","v":{"$error":"#REF!"}},{"$f":"SUM(#REF!)","v":{"$error":"#REF!"}},{"$f":"SUM(#REF!)","v":{"$error":"#REF!"}},{"$f":"SUM(#REF!)","v":{"$error":"#REF!"}},{"$f":"SUM(#REF!)","v":{"$error":"#REF!"}},{"$f":"SUM(#REF!)","v":{"$error":"#REF!"}},{"$f":"SUM(#REF!)","v":{"$error":"#REF!"}},{"$f":"SUM(#REF!)","v":{"$error":"#REF!"}},{"$f":"SUM(#REF!)","v":{"$error":"#REF!"}},{"$f":"SUM(#REF!)","v":{"$error":"#REF!"}},{"$f":"SUM(#REF!)","v":{"$error":"#REF!"}},{"$f":"SUM(#REF!)","v":{"$error":"#REF!"}},{"$f":"SUM(#REF!)","v":{"$error":"#REF!"}},{"$f":"SUM(#REF!)","v":{"$error":"#REF!"}},{"$f":"SUM(#REF!)","v":{"$error":"#REF!"}},{"$f":"SUM(#REF!)","v":{"$error":"#REF!"}},{"$f":"SUM(#REF!)","v":{"$error":"#REF!"}},{"$f":"SUM(#REF!)","v":{"$error":"#REF!"}},{"$f":"SUM(#REF!)","v":{"$error":"#REF!"}},{"$f":"SUM(#REF!)","v":{"$error":"#REF!"}},{"$f":"SUM(#REF!)","v":{"$error":"#REF!"}},{"$f":"SUM(#REF!)","v":{"$error":"#REF!"}},{"$f":"SUM(#REF!)","v":{"$error":"#REF!"}},{"$f":"SUM(#REF!)","v":{"$error":"#REF!"}},{"$f":"SUM(#REF!)","v":{"$error":"#REF!"}},{"$f":"SUM(#REF!)","v":{"$error":"#REF!"}},{"$f":"SUM(#REF!)","v":{"$error":"#REF!"}},{"$f":"SUM(#REF!)","v":{"$error":"#REF!"}},{"$f":"SUM(#REF!)","v":{"$error":"#REF!"}},{"$f":"SUM(#REF!)","v":{"$error":"#REF!"}},{"$f":"SUM(#REF!)","v":{"$error":"#REF!"}},{"$f":"SUM(#REF!)","v":{"$error":"#REF!"}},{"$f":"SUM(#REF!)","v":{"$error":"#REF!"}},{"$f":"SUM(#REF!)","v":{"$error":"#REF!"}},{"$f":"SUM(#REF!)","v":{"$error":"#REF!"}},{"$f":"SUM(#REF!)","v":{"$error":"#REF!"}},{"$f":"SUM(#REF!)","v":{"$error":"#REF!"}},{"$f":"SUM(#REF!)","v":{"$error":"#REF!"}},{"$f":"SUM(#REF!)","v":{"$error":"#REF!"}},{"$f":"SUM(#REF!)","v":{"$error":"#REF!"}},{"$f":"SUM(#REF!)","v":{"$error":"#REF!"}},{"$f":"SUM(#REF!)","v":{"$error":"#REF!"}},{"$f":"SUM(#REF!)","v":{"$error":"#REF!"}},{"$f":"SUM(#REF!)","v":{"$error":"#REF!"}},{"$f":"SUM(#REF!)","v":{"$error":"#REF!"}},{"$f":"SUM(#REF!)","v":{"$error":"#REF!"}},{"$f":"SUM(#REF!)","v":{"$error":"#REF!"}},{"$f":"SUM(#REF!)","v":{"$error":"#REF!"}},{"$f":"SUM(#REF!)","v":{"$error":"#REF!"}},{"$f":"SUM(#REF!)","v":{"$error":"#REF!"}},{"$f":"SUM(#REF!)","v":{"$error":"#REF!"}},{"$f":"SUM(#REF!)","v":{"$error":"#REF!"}},{"$f":"SUM(#REF!)","v":{"$error":"#REF!"}},{"$f":"SUM(#REF!)","v":{"$error":"#REF!"}},{"$f":"SUM(#REF!)","v":{"$error":"#REF!"}},{"$f":"SUM(#REF!)","v":{"$error":"#REF!"}},{"$f":"SUM(#REF!)","v":{"$error":"#REF!"}},{"$f":"SUM(#REF!)","v":{"$error":"#REF!"}},{"$f":"SUM(#REF!)","v":{"$error":"#REF!"}},{"$f":"SUM(#REF!)","v":{"$error":"#REF!"}},{"$f":"SUM(#REF!)","v":{"$error":"#REF!"}},{"$f":"SUM(#REF!)","v":{"$error":"#REF!"}},{"$f":"SUM(#REF!)","v":{"$error":"#REF!"}},{"$f":"SUM(#REF!)","v":{"$error":"#REF!"}},{"$f":"SUM(#REF!)","v":{"$error":"#REF!"}},{"$f":"SUM(#REF!)","v":{"$error":"#REF!"}},{"$f":"SUM(#REF!)","v":{"$error":"#REF!"}},{"$f":"SUM(#REF!)","v":{"$error":"#REF!"}},{"$f":"SUM(#REF!)","v":{"$error":"#REF!"}},{"$f":"SUM(#REF!)","v":{"$error":"#REF!"}},{"$f":"SUM(#REF!)","v":{"$error":"#REF!"}},{"$f":"SUM(#REF!)","v":{"$error":"#REF!"}},{"$f":"SUM(#REF!)","v":{"$error":"#REF!"}},{"$f":"SUM(#REF!)","v":{"$error":"#REF!"}},{"$f":"SUM(#REF!)","v":{"$error":"#REF!"}},{"$f":"SUM(#REF!)","v":{"$error":"#REF!"}},{"$f":"SUM(#REF!)","v":{"$error":"#REF!"}},{"$f":"SUM(#REF!)","v":{"$error":"#REF!"}},{"$f":"SUM(#REF!)","v":{"$error":"#REF!"}},{"$f":"SUM(#REF!)","v":{"$error":"#REF!"}},{"$f":"SUM(#REF!)","v":{"$error":"#REF!"}},{"$f":"SUM(#REF!)","v":{"$error":"#REF!"}},{"$f":"SUM(#REF!)","v":{"$error":"#REF!"}},{"$f":"SUM(#REF!)","v":{"$error":"#REF!"}},{"$f":"SUM(#REF!)","v":{"$error":"#REF!"}},{"$f":"SUM(#REF!)","v":{"$error":"#REF!"}},{"$f":"SUM(#REF!)","v":{"$error":"#REF!"}},{"$f":"SUM(#REF!)","v":{"$error":"#REF!"}},{"$f":"SUM(#REF!)","v":{"$error":"#REF!"}},{"$f":"SUM(#REF!)","v":{"$error":"#REF!"}},{"$f":"SUM(#REF!)","v":{"$error":"#REF!"}},{"$f":"SUM(#REF!)","v":{"$error":"#REF!"}},{"$f":"SUM(#REF!)","v":{"$error":"#REF!"}},{"$f":"SUM(#REF!)","v":{"$error":"#REF!"}},{"$f":"SUM(#REF!)","v":{"$error":"#REF!"}},{"$f":"SUM(#REF!)","v":{"$error":"#REF!"}},{"$f":"SUM(#REF!)","v":{"$error":"#REF!"}},{"$f":"SUM(#REF!)","v":{"$error":"#REF!"}},{"$f":"SUM(#REF!)","v":{"$error":"#REF!"}},{"$f":"SUM(#REF!)","v":{"$error":"#REF!"}},{"$f":"SUM(#REF!)","v":{"$error":"#REF!"}},{"$f":"SUM(#REF!)","v":{"$error":"#REF!"}},{"$f":"SUM(#REF!)","v":{"$error":"#REF!"}},{"$f":"SUM(#REF!)","v":{"$error":"#REF!"}},{"$f":"SUM(#REF!)","v":{"$error":"#REF!"}},{"$f":"SUM(#REF!)","v":{"$error":"#REF!"}},{"$f":"SUM(#REF!)","v":{"$error":"#REF!"}},{"$f":"SUM(#REF!)","v":{"$error":"#REF!"}},{"$f":"SUM(#REF!)","v":{"$error":"#REF!"}},{"$f":"SUM(#REF!)","v":{"$error":"#REF!"}},{"$f":"SUM(#REF!)","v":{"$error":"#REF!"}},{"$f":"SUM(#REF!)","v":{"$error":"#REF!"}},{"$f":"SUM(#REF!)","v":{"$error":"#REF!"}},{"$f":"SUM(#REF!)","v":{"$error":"#REF!"}},{"$f":"SUM(#REF!)","v":{"$error":"#REF!"}},{"$f":"SUM(#REF!)","v":{"$error":"#REF!"}},{"$f":"SUM(#REF!)","v":{"$error":"#REF!"}},{"$f":"SUM(#REF!)","v":{"$error":"#REF!"}},{"$f":"SUM(#REF!)","v":{"$error":"#REF!"}},{"$f":"SUM(#REF!)","v":{"$error":"#REF!"}},{"$f":"SUM(#REF!)","v":{"$error":"#REF!"}},{"$f":"SUM(#REF!)","v":{"$error":"#REF!"}},{"$f":"SUM(#REF!)","v":{"$error":"#REF!"}},{"$f":"SUM(#REF!)","v":{"$error":"#REF!"}},{"$f":"SUM(#REF!)","v":{"$error":"#REF!"}},{"$f":"SUM(#REF!)","v":{"$error":"#REF!"}},{"$f":"SUM(#REF!)","v":{"$error":"#REF!"}},{"$f":"SUM(#REF!)","v":{"$error":"#REF!"}},{"$f":"SUM(#REF!)","v":{"$error":"#REF!"}},{"$f":"SUM(#REF!)","v":{"$error":"#REF!"}},{"$f":"SUM(#REF!)","v":{"$error":"#REF!"}},{"$f":"SUM(#REF!)","v":{"$error":"#REF!"}},{"$f":"SUM(#REF!)","v":{"$error":"#REF!"}},{"$f":"SUM(#REF!)","v":{"$error":"#REF!"}},{"$f":"SUM(#REF!)","v":{"$error":"#REF!"}},{"$f":"SUM(#REF!)","v":{"$error":"#REF!"}},{"$f":"SUM(#REF!)","v":{"$error":"#REF!"}},{"$f":"SUM(#REF!)","v":{"$error":"#REF!"}},{"$f":"SUM(#REF!)","v":{"$error":"#REF!"}},{"$f":"SUM(#REF!)","v":{"$error":"#REF!"}},{"$f":"SUM(#REF!)","v":{"$error":"#REF!"}},{"$f":"SUM(#REF!)","v":{"$error":"#REF!"}},{"$f":"SUM(#REF!)","v":{"$error":"#REF!"}},{"$f":"SUM(#REF!)","v":{"$error":"#REF!"}},{"$f":"SUM(#REF!)","v":{"$error":"#REF!"}},{"$f":"SUM(#REF!)","v":{"$error":"#REF!"}},{"$f":"SUM(#REF!)","v":{"$error":"#REF!"}},{"$f":"SUM(#REF!)","v":{"$error":"#REF!"}},{"$f":"SUM(#REF!)","v":{"$error":"#REF!"}},{"$f":"SUM(#REF!)","v":{"$error":"#REF!"}},{"$f":"SUM(#REF!)","v":{"$error":"#REF!"}},{"$f":"SUM(#REF!)","v":{"$error":"#REF!"}},{"$f":"SUM(#REF!)","v":{"$error":"#REF!"}},{"$f":"SUM(#REF!)","v":{"$error":"#REF!"}},{"$f":"SUM(#REF!)","v":{"$error":"#REF!"}},{"$f":"SUM(#REF!)","v":{"$error":"#REF!"}},{"$f":"SUM(#REF!)","v":{"$error":"#REF!"}},{"$f":"SUM(#REF!)","v":{"$error":"#REF!"}},{"$f":"SUM(#REF!)","v":{"$error":"#REF!"}},{"$f":"SUM(#REF!)","v":{"$error":"#REF!"}},{"$f":"SUM(#REF!)","v":{"$error":"#REF!"}},{"$f":"SUM(#REF!)","v":{"$error":"#REF!"}},{"$f":"SUM(#REF!)","v":{"$error":"#REF!"}},{"$f":"SUM(#REF!)","v":{"$error":"#REF!"}},{"$f":"SUM(#REF!)","v":{"$error":"#REF!"}},{"$f":"SUM(#REF!)","v":{"$error":"#REF!"}},{"$f":"SUM(#REF!)","v":{"$error":"#REF!"}},{"$f":"SUM(#REF!)","v":{"$error":"#REF!"}},{"$f":"SUM(#REF!)","v":{"$error":"#REF!"}},{"$f":"SUM(#REF!)","v":{"$error":"#REF!"}},{"$f":"SUM(#REF!)","v":{"$error":"#REF!"}},{"$f":"SUM(#REF!)","v":{"$error":"#REF!"}},{"$f":"SUM(#REF!)","v":{"$error":"#REF!"}},{"$f":"SUM(#REF!)","v":{"$error":"#REF!"}},{"$f":"SUM(#REF!)","v":{"$error":"#REF!"}},{"$f":"SUM(#REF!)","v":{"$error":"#REF!"}},{"$f":"SUM(#REF!)","v":{"$error":"#REF!"}},{"$f":"SUM(#REF!)","v":{"$error":"#REF!"}},{"$f":"SUM(#REF!)","v":{"$error":"#REF!"}},{"$f":"SUM(#REF!)","v":{"$error":"#REF!"}},{"$f":"SUM(#REF!)","v":{"$error":"#REF!"}},{"$f":"SUM(#REF!)","v":{"$error":"#REF!"}},{"$f":"SUM(#REF!)","v":{"$error":"#REF!"}},{"$f":"SUM(#REF!)","v":{"$error":"#REF!"}},{"$f":"SUM(#REF!)","v":{"$error":"#REF!"}},{"$f":"SUM(#REF!)","v":{"$error":"#REF!"}},{"$f":"SUM(#REF!)","v":{"$error":"#REF!"}},{"$f":"SUM(#REF!)","v":{"$error":"#REF!"}},{"$f":"SUM(#REF!)","v":{"$error":"#REF!"}},{"$f":"SUM(#REF!)","v":{"$error":"#REF!"}},{"$f":"SUM(#REF!)","v":{"$error":"#REF!"}},{"$f":"SUM(#REF!)","v":{"$error":"#REF!"}},{"$f":"SUM(#REF!)","v":{"$error":"#REF!"}},{"$f":"SUM(#REF!)","v":{"$error":"#REF!"}},{"$f":"SUM(#REF!)","v":{"$error":"#REF!"}},{"$f":"SUM(#REF!)","v":{"$error":"#REF!"}},{"$f":"SUM(#REF!)","v":{"$error":"#REF!"}},{"$f":"SUM(#REF!)","v":{"$error":"#REF!"}},{"$f":"SUM(#REF!)","v":{"$error":"#REF!"}},{"$f":"SUM(#REF!)","v":{"$error":"#REF!"}},{"$f":"SUM(#REF!)","v":{"$error":"#REF!"}},{"$f":"SUM(#REF!)","v":{"$error":"#REF!"}},{"$f":"SUM(#REF!)","v":{"$error":"#REF!"}},{"$f":"SUM(#REF!)","v":{"$error":"#REF!"}},{"$f":"SUM(#REF!)","v":{"$error":"#REF!"}},{"$f":"SUM(#REF!)","v":{"$error":"#REF!"}},{"$f":"SUM(#REF!)","v":{"$error":"#REF!"}},{"$f":"SUM(#REF!)","v":{"$error":"#REF!"}},{"$f":"SUM(#REF!)","v":{"$error":"#REF!"}},{"$f":"SUM(#REF!)","v":{"$error":"#REF!"}},{"$f":"SUM(#REF!)","v":{"$error":"#REF!"}},{"$f":"SUM(#REF!)","v":{"$error":"#REF!"}},{"$f":"SUM(#REF!)","v":{"$error":"#REF!"}},{"$f":"SUM(#REF!)","v":{"$error":"#REF!"}},{"$f":"SUM(#REF!)","v":{"$error":"#REF!"}},{"$f":"SUM(#REF!)","v":{"$error":"#REF!"}},{"$f":"SUM(#REF!)","v":{"$error":"#REF!"}},{"$f":"SUM(#REF!)","v":{"$error":"#REF!"}},{"$f":"SUM(#REF!)","v":{"$error":"#REF!"}},{"$f":"SUM(#REF!)","v":{"$error":"#REF!"}},{"$f":"SUM(#REF!)","v":{"$error":"#REF!"}},{"$f":"SUM(#REF!)","v":{"$error":"#REF!"}},{"$f":"SUM(#REF!)","v":{"$error":"#REF!"}},{"$f":"SUM(#REF!)","v":{"$error":"#REF!"}},{"$f":"SUM(#REF!)","v":{"$error":"#REF!"}},{"$f":"SUM(#REF!)","v":{"$error":"#REF!"}},{"$f":"SUM(#REF!)","v":{"$error":"#REF!"}},{"$f":"SUM(#REF!)","v":{"$error":"#REF!"}},{"$f":"SUM(#REF!)","v":{"$error":"#REF!"}},{"$f":"SUM(#REF!)","v":{"$error":"#REF!"}},{"$f":"SUM(#REF!)","v":{"$error":"#REF!"}},{"$f":"SUM(#REF!)","v":{"$error":"#REF!"}},{"$f":"SUM(#REF!)","v":{"$error":"#REF!"}},{"$f":"SUM(#REF!)","v":{"$error":"#REF!"}},{"$f":"SUM(#REF!)","v":{"$error":"#REF!"}},{"$f":"SUM(#REF!)","v":{"$error":"#REF!"}},{"$f":"SUM(#REF!)","v":{"$error":"#REF!"}},{"$f":"SUM(#REF!)","v":{"$error":"#REF!"}},{"$f":"SUM(#REF!)","v":{"$error":"#REF!"}},{"$f":"SUM(#REF!)","v":{"$error":"#REF!"}},{"$f":"SUM(#REF!)","v":{"$error":"#REF!"}},{"$f":"SUM(#REF!)","v":{"$error":"#REF!"}},{"$f":"SUM(#REF!)","v":{"$error":"#REF!"}},{"$f":"SUM(#REF!)","v":{"$error":"#REF!"}},{"$f":"SUM(#REF!)","v":{"$error":"#REF!"}},{"$f":"SUM(#REF!)","v":{"$error":"#REF!"}},{"$f":"SUM(#REF!)","v":{"$error":"#REF!"}},{"$f":"SUM(#REF!)","v":{"$error":"#REF!"}},{"$f":"SUM(#REF!)","v":{"$error":"#REF!"}},{"$f":"SUM(#REF!)","v":{"$error":"#REF!"}},{"$f":"SUM(#REF!)","v":{"$error":"#REF!"}},{"$f":"SUM(#REF!)","v":{"$error":"#REF!"}},{"$f":"SUM(#REF!)","v":{"$error":"#REF!"}},{"$f":"SUM(#REF!)","v":{"$error":"#REF!"}},{"$f":"SUM(#REF!)","v":{"$error":"#REF!"}},{"$f":"SUM(#REF!)","v":{"$error":"#REF!"}},{"$f":"SUM(#REF!)","v":{"$error":"#REF!"}},{"$f":"SUM(#REF!)","v":{"$error":"#REF!"}},{"$f":"SUM(#REF!)","v":{"$error":"#REF!"}},{"$f":"SUM(#REF!)","v":{"$error":"#REF!"}},{"$f":"SUM(#REF!)","v":{"$error":"#REF!"}},{"$f":"SUM(#REF!)","v":{"$error":"#REF!"}},{"$f":"SUM(#REF!)","v":{"$error":"#REF!"}},{"$f":"SUM(#REF!)","v":{"$error":"#REF!"}},{"$f":"SUM(#REF!)","v":{"$error":"#REF!"}},{"$f":"SUM(#REF!)","v":{"$error":"#REF!"}},{"$f":"SUM(#REF!)","v":{"$error":"#REF!"}},{"$f":"SUM(#REF!)","v":{"$error":"#REF!"}},{"$f":"SUM(#REF!)","v":{"$error":"#REF!"}},{"$f":"SUM(#REF!)","v":{"$error":"#REF!"}},{"$f":"SUM(#REF!)","v":{"$error":"#REF!"}},{"$f":"SUM(#REF!)","v":{"$error":"#REF!"}},{"$f":"SUM(#REF!)","v":{"$error":"#REF!"}},{"$f":"SUM(#REF!)","v":{"$error":"#REF!"}},{"$f":"SUM(#REF!)","v":{"$error":"#REF!"}},{"$f":"SUM(#REF!)","v":{"$error":"#REF!"}},{"$f":"SUM(#REF!)","v":{"$error":"#REF!"}},{"$f":"SUM(#REF!)","v":{"$error":"#REF!"}},{"$f":"SUM(#REF!)","v":{"$error":"#REF!"}},{"$f":"SUM(#REF!)","v":{"$error":"#REF!"}},{"$f":"SUM(#REF!)","v":{"$error":"#REF!"}},{"$f":"SUM(#REF!)","v":{"$error":"#REF!"}},{"$f":"SUM(#REF!)","v":{"$error":"#REF!"}},{"$f":"SUM(#REF!)","v":{"$error":"#REF!"}},{"$f":"SUM(#REF!)","v":{"$error":"#REF!"}},{"$f":"SUM(#REF!)","v":{"$error":"#REF!"}},{"$f":"SUM(#REF!)","v":{"$error":"#REF!"}},{"$f":"SUM(#REF!)","v":{"$error":"#REF!"}},{"$f":"SUM(#REF!)","v":{"$error":"#REF!"}},{"$f":"SUM(#REF!)","v":{"$error":"#REF!"}},{"$f":"SUM(#REF!)","v":{"$error":"#REF!"}},{"$f":"SUM(#REF!)","v":{"$error":"#REF!"}},{"$f":"SUM(#REF!)","v":{"$error":"#REF!"}},{"$f":"SUM(#REF!)","v":{"$error":"#REF!"}},{"$f":"SUM(#REF!)","v":{"$error":"#REF!"}},{"$f":"SUM(#REF!)","v":{"$error":"#REF!"}},{"$f":"SUM(#REF!)","v":{"$error":"#REF!"}},{"$f":"SUM(#REF!)","v":{"$error":"#REF!"}},{"$f":"SUM(#REF!)","v":{"$error":"#REF!"}},{"$f":"SUM(#REF!)","v":{"$error":"#REF!"}},{"$f":"SUM(#REF!)","v":{"$error":"#REF!"}},{"$f":"SUM(#REF!)","v":{"$error":"#REF!"}},{"$f":"SUM(#REF!)","v":{"$error":"#REF!"}},{"$f":"SUM(#REF!)","v":{"$error":"#REF!"}},{"$f":"SUM(#REF!)","v":{"$error":"#REF!"}},{"$f":"SUM(#REF!)","v":{"$error":"#REF!"}},{"$f":"SUM(#REF!)","v":{"$error":"#REF!"}},{"$f":"SUM(#REF!)","v":{"$error":"#REF!"}},{"$f":"SUM(#REF!)","v":{"$error":"#REF!"}},{"$f":"SUM(#REF!)","v":{"$error":"#REF!"}},{"$f":"SUM(#REF!)","v":{"$error":"#REF!"}},{"$f":"SUM(#REF!)","v":{"$error":"#REF!"}},{"$f":"SUM(#REF!)","v":{"$error":"#REF!"}},{"$f":"SUM(#REF!)","v":{"$error":"#REF!"}},{"$f":"SUM(#REF!)","v":{"$error":"#REF!"}},{"$f":"SUM(#REF!)","v":{"$error":"#REF!"}},{"$f":"SUM(#REF!)","v":{"$error":"#REF!"}},{"$f":"SUM(#REF!)","v":{"$error":"#REF!"}},{"$f":"SUM(#REF!)","v":{"$error":"#REF!"}},{"$f":"SUM(#REF!)","v":{"$error":"#REF!"}},{"$f":"SUM(#REF!)","v":{"$error":"#REF!"}},{"$f":"SUM(#REF!)","v":{"$error":"#REF!"}},{"$f":"SUM(#REF!)","v":{"$error":"#REF!"}},{"$f":"SUM(#REF!)","v":{"$error":"#REF!"}},{"$f":"SUM(#REF!)","v":{"$error":"#REF!"}},{"$f":"SUM(#REF!)","v":{"$error":"#REF!"}},{"$f":"SUM(#REF!)","v":{"$error":"#REF!"}},{"$f":"SUM(#REF!)","v":{"$error":"#REF!"}},{"$f":"SUM(#REF!)","v":{"$error":"#REF!"}},{"$f":"SUM(#REF!)","v":{"$error":"#REF!"}},{"$f":"SUM(#REF!)","v":{"$error":"#REF!"}},{"$f":"SUM(#REF!)","v":{"$error":"#REF!"}},{"$f":"SUM(#REF!)","v":{"$error":"#REF!"}},{"$f":"SUM(#REF!)","v":{"$error":"#REF!"}},{"$f":"SUM(#REF!)","v":{"$error":"#REF!"}},{"$f":"SUM(#REF!)","v":{"$error":"#REF!"}},{"$f":"SUM(#REF!)","v":{"$error":"#REF!"}},{"$f":"SUM(#REF!)","v":{"$error":"#REF!"}},{"$f":"SUM(#REF!)","v":{"$error":"#REF!"}},{"$f":"SUM(#REF!)","v":{"$error":"#REF!"}},{"$f":"SUM(#REF!)","v":{"$error":"#REF!"}},{"$f":"SUM(#REF!)","v":{"$error":"#REF!"}},{"$f":"SUM(#REF!)","v":{"$error":"#REF!"}},{"$f":"SUM(#REF!)","v":{"$error":"#REF!"}},{"$f":"SUM(#REF!)","v":{"$error":"#REF!"}},{"$f":"SUM(#REF!)","v":{"$error":"#REF!"}},{"$f":"SUM(#REF!)","v":{"$error":"#REF!"}},{"$f":"SUM(#REF!)","v":{"$error":"#REF!"}},{"$f":"SUM(#REF!)","v":{"$error":"#REF!"}},{"$f":"SUM(#REF!)","v":{"$error":"#REF!"}},{"$f":"SUM(#REF!)","v":{"$error":"#REF!"}},{"$f":"SUM(#REF!)","v":{"$error":"#REF!"}},{"$f":"SUM(#REF!)","v":{"$error":"#REF!"}},{"$f":"SUM(#REF!)","v":{"$error":"#REF!"}},{"$f":"SUM(#REF!)","v":{"$error":"#REF!"}},{"$f":"SUM(#REF!)","v":{"$error":"#REF!"}},{"$f":"SUM(#REF!)","v":{"$error":"#REF!"}},{"$f":"SUM(#REF!)","v":{"$error":"#REF!"}},{"$f":"SUM(#REF!)","v":{"$error":"#REF!"}},{"$f":"SUM(#REF!)","v":{"$error":"#REF!"}},{"$f":"SUM(#REF!)","v":{"$error":"#REF!"}},{"$f":"SUM(#REF!)","v":{"$error":"#REF!"}},{"$f":"SUM(#REF!)","v":{"$error":"#REF!"}},{"$f":"SUM(#REF!)","v":{"$error":"#REF!"}},{"$f":"SUM(#REF!)","v":{"$error":"#REF!"}},{"$f":"SUM(#REF!)","v":{"$error":"#REF!"}},{"$f":"SUM(#REF!)","v":{"$error":"#REF!"}},{"$f":"SUM(#REF!)","v":{"$error":"#REF!"}},{"$f":"SUM(#REF!)","v":{"$error":"#REF!"}},{"$f":"SUM(#REF!)","v":{"$error":"#REF!"}},{"$f":"SUM(#REF!)","v":{"$error":"#REF!"}},{"$f":"SUM(#REF!)","v":{"$error":"#REF!"}},{"$f":"SUM(#REF!)","v":{"$error":"#REF!"}},{"$f":"SUM(#REF!)","v":{"$error":"#REF!"}},{"$f":"SUM(#REF!)","v":{"$error":"#REF!"}},{"$f":"SUM(#REF!)","v":{"$error":"#REF!"}},{"$f":"SUM(#REF!)","v":{"$error":"#REF!"}},{"$f":"SUM(#REF!)","v":{"$error":"#REF!"}},{"$f":"SUM(#REF!)","v":{"$error":"#REF!"}},{"$f":"SUM(#REF!)","v":{"$error":"#REF!"}},{"$f":"SUM(#REF!)","v":{"$error":"#REF!"}},{"$f":"SUM(#REF!)","v":{"$error":"#REF!"}},{"$f":"SUM(#REF!)","v":{"$error":"#REF!"}},{"$f":"SUM(#REF!)","v":{"$error":"#REF!"}},{"$f":"SUM(#REF!)","v":{"$error":"#REF!"}},{"$f":"SUM(#REF!)","v":{"$error":"#REF!"}},{"$f":"SUM(#REF!)","v":{"$error":"#REF!"}},{"$f":"SUM(#REF!)","v":{"$error":"#REF!"}},{"$f":"SUM(#REF!)","v":{"$error":"#REF!"}},{"$f":"SUM(#REF!)","v":{"$error":"#REF!"}},{"$f":"SUM(#REF!)","v":{"$error":"#REF!"}},{"$f":"SUM(#REF!)","v":{"$error":"#REF!"}},{"$f":"SUM(#REF!)","v":{"$error":"#REF!"}},{"$f":"SUM(#REF!)","v":{"$error":"#REF!"}},{"$f":"SUM(#REF!)","v":{"$error":"#REF!"}},{"$f":"SUM(#REF!)","v":{"$error":"#REF!"}},{"$f":"SUM(#REF!)","v":{"$error":"#REF!"}},{"$f":"SUM(#REF!)","v":{"$error":"#REF!"}},{"$f":"SUM(#REF!)","v":{"$error":"#REF!"}},{"$f":"SUM(#REF!)","v":{"$error":"#REF!"}},{"$f":"SUM(#REF!)","v":{"$error":"#REF!"}},{"$f":"SUM(#REF!)","v":{"$error":"#REF!"}},{"$f":"SUM(#REF!)","v":{"$error":"#REF!"}},{"$f":"SUM(#REF!)","v":{"$error":"#REF!"}},{"$f":"SUM(#REF!)","v":{"$error":"#REF!"}},{"$f":"SUM(#REF!)","v":{"$error":"#REF!"}},{"$f":"SUM(#REF!)","v":{"$error":"#REF!"}},{"$f":"SUM(#REF!)","v":{"$error":"#REF!"}},{"$f":"SUM(#REF!)","v":{"$error":"#REF!"}},{"$f":"SUM(#REF!)","v":{"$error":"#REF!"}},{"$f":"SUM(#REF!)","v":{"$error":"#REF!"}},{"$f":"SUM(#REF!)","v":{"$error":"#REF!"}},{"$f":"SUM(#REF!)","v":{"$error":"#REF!"}},{"$f":"SUM(#REF!)","v":{"$error":"#REF!"}},{"$f":"SUM(#REF!)","v":{"$error":"#REF!"}},{"$f":"SUM(#REF!)","v":{"$error":"#REF!"}},{"$f":"SUM(#REF!)","v":{"$error":"#REF!"}},{"$f":"SUM(#REF!)","v":{"$error":"#REF!"}},{"$f":"SUM(#REF!)","v":{"$error":"#REF!"}},{"$f":"SUM(#REF!)","v":{"$error":"#REF!"}},{"$f":"SUM(#REF!)","v":{"$error":"#REF!"}},{"$f":"SUM(#REF!)","v":{"$error":"#REF!"}},{"$f":"SUM(#REF!)","v":{"$error":"#REF!"}},{"$f":"SUM(#REF!)","v":{"$error":"#REF!"}},{"$f":"SUM(#REF!)","v":{"$error":"#REF!"}},{"$f":"SUM(#REF!)","v":{"$error":"#REF!"}},{"$f":"SUM(#REF!)","v":{"$error":"#REF!"}},{"$f":"SUM(#REF!)","v":{"$error":"#REF!"}},{"$f":"SUM(#REF!)","v":{"$error":"#REF!"}},{"$f":"SUM(#REF!)","v":{"$error":"#REF!"}},{"$f":"SUM(#REF!)","v":{"$error":"#REF!"}},{"$f":"SUM(#REF!)","v":{"$error":"#REF!"}},{"$f":"SUM(#REF!)","v":{"$error":"#REF!"}},{"$f":"SUM(#REF!)","v":{"$error":"#REF!"}},{"$f":"SUM(#REF!)","v":{"$error":"#REF!"}},{"$f":"SUM(#REF!)","v":{"$error":"#REF!"}},{"$f":"SUM(#REF!)","v":{"$error":"#REF!"}},{"$f":"SUM(#REF!)","v":{"$error":"#REF!"}},{"$f":"SUM(#REF!)","v":{"$error":"#REF!"}},{"$f":"SUM(#REF!)","v":{"$error":"#REF!"}},{"$f":"SUM(#REF!)","v":{"$error":"#REF!"}},{"$f":"SUM(#REF!)","v":{"$error":"#REF!"}},{"$f":"SUM(#REF!)","v":{"$error":"#REF!"}},{"$f":"SUM(#REF!)","v":{"$error":"#REF!"}},{"$f":"SUM(#REF!)","v":{"$error":"#REF!"}},{"$f":"SUM(#REF!)","v":{"$error":"#REF!"}},{"$f":"SUM(#REF!)","v":{"$error":"#REF!"}},{"$f":"SUM(#REF!)","v":{"$error":"#REF!"}},{"$f":"SUM(#REF!)","v":{"$error":"#REF!"}},{"$f":"SUM(#REF!)","v":{"$error":"#REF!"}},{"$f":"SUM(#REF!)","v":{"$error":"#REF!"}},{"$f":"SUM(#REF!)","v":{"$error":"#REF!"}},{"$f":"SUM(#REF!)","v":{"$error":"#REF!"}},{"$f":"SUM(#REF!)","v":{"$error":"#REF!"}},{"$f":"SUM(#REF!)","v":{"$error":"#REF!"}},{"$f":"SUM(#REF!)","v":{"$error":"#REF!"}},{"$f":"SUM(#REF!)","v":{"$error":"#REF!"}},{"$f":"SUM(#REF!)","v":{"$error":"#REF!"}},{"$f":"SUM(#REF!)","v":{"$error":"#REF!"}},{"$f":"SUM(#REF!)","v":{"$error":"#REF!"}},{"$f":"SUM(#REF!)","v":{"$error":"#REF!"}},{"$f":"SUM(#REF!)","v":{"$error":"#REF!"}},{"$f":"SUM(#REF!)","v":{"$error":"#REF!"}},{"$f":"SUM(#REF!)","v":{"$error":"#REF!"}},{"$f":"SUM(#REF!)","v":{"$error":"#REF!"}},{"$f":"SUM(#REF!)","v":{"$error":"#REF!"}},{"$f":"SUM(#REF!)","v":{"$error":"#REF!"}},{"$f":"SUM(#REF!)","v":{"$error":"#REF!"}},{"$f":"SUM(#REF!)","v":{"$error":"#REF!"}},{"$f":"SUM(#REF!)","v":{"$error":"#REF!"}},{"$f":"SUM(#REF!)","v":{"$error":"#REF!"}},{"$f":"SUM(#REF!)","v":{"$error":"#REF!"}},{"$f":"SUM(#REF!)","v":{"$error":"#REF!"}},{"$f":"SUM(#REF!)","v":{"$error":"#REF!"}},{"$f":"SUM(#REF!)","v":{"$error":"#REF!"}},{"$f":"SUM(#REF!)","v":{"$error":"#REF!"}},{"$f":"SUM(#REF!)","v":{"$error":"#REF!"}},{"$f":"SUM(#REF!)","v":{"$error":"#REF!"}},{"$f":"SUM(#REF!)","v":{"$error":"#REF!"}},{"$f":"SUM(#REF!)","v":{"$error":"#REF!"}},{"$f":"SUM(#REF!)","v":{"$error":"#REF!"}},{"$f":"SUM(#REF!)","v":{"$error":"#REF!"}},{"$f":"SUM(#REF!)","v":{"$error":"#REF!"}},{"$f":"SUM(#REF!)","v":{"$error":"#REF!"}},{"$f":"SUM(#REF!)","v":{"$error":"#REF!"}},{"$f":"SUM(#REF!)","v":{"$error":"#REF!"}},{"$f":"SUM(#REF!)","v":{"$error":"#REF!"}},{"$f":"SUM(#REF!)","v":{"$error":"#REF!"}},{"$f":"SUM(#REF!)","v":{"$error":"#REF!"}},{"$f":"SUM(#REF!)","v":{"$error":"#REF!"}},{"$f":"SUM(#REF!)","v":{"$error":"#REF!"}},{"$f":"SUM(#REF!)","v":{"$error":"#REF!"}},{"$f":"SUM(#REF!)","v":{"$error":"#REF!"}},{"$f":"SUM(#REF!)","v":{"$error":"#REF!"}},{"$f":"SUM(#REF!)","v":{"$error":"#REF!"}},{"$f":"SUM(#REF!)","v":{"$error":"#REF!"}},{"$f":"SUM(#REF!)","v":{"$error":"#REF!"}},{"$f":"SUM(#REF!)","v":{"$error":"#REF!"}},{"$f":"SUM(#REF!)","v":{"$error":"#REF!"}},{"$f":"SUM(#REF!)","v":{"$error":"#REF!"}},{"$f":"SUM(#REF!)","v":{"$error":"#REF!"}},{"$f":"SUM(#REF!)","v":{"$error":"#REF!"}},{"$f":"SUM(#REF!)","v":{"$error":"#REF!"}},{"$f":"SUM(#REF!)","v":{"$error":"#REF!"}},{"$f":"SUM(#REF!)","v":{"$error":"#REF!"}},{"$f":"SUM(#REF!)","v":{"$error":"#REF!"}},{"$f":"SUM(#REF!)","v":{"$error":"#REF!"}},{"$f":"SUM(#REF!)","v":{"$error":"#REF!"}},{"$f":"SUM(#REF!)","v":{"$error":"#REF!"}},{"$f":"SUM(#REF!)","v":{"$error":"#REF!"}},{"$f":"SUM(#REF!)","v":{"$error":"#REF!"}},{"$f":"SUM(#REF!)","v":{"$error":"#REF!"}},{"$f":"SUM(#REF!)","v":{"$error":"#REF!"}},{"$f":"SUM(#REF!)","v":{"$error":"#REF!"}},{"$f":"SUM(#REF!)","v":{"$error":"#REF!"}},{"$f":"SUM(#REF!)","v":{"$error":"#REF!"}},{"$f":"SUM(#REF!)","v":{"$error":"#REF!"}},{"$f":"SUM(#REF!)","v":{"$error":"#REF!"}},{"$f":"SUM(#REF!)","v":{"$error":"#REF!"}},{"$f":"SUM(#REF!)","v":{"$error":"#REF!"}},{"$f":"SUM(#REF!)","v":{"$error":"#REF!"}},{"$f":"SUM(#REF!)","v":{"$error":"#REF!"}},{"$f":"SUM(#REF!)","v":{"$error":"#REF!"}},{"$f":"SUM(#REF!)","v":{"$error":"#REF!"}},{"$f":"SUM(#REF!)","v":{"$error":"#REF!"}},{"$f":"SUM(#REF!)","v":{"$error":"#REF!"}},{"$f":"SUM(#REF!)","v":{"$error":"#REF!"}},{"$f":"SUM(#REF!)","v":{"$error":"#REF!"}},{"$f":"SUM(#REF!)","v":{"$error":"#REF!"}},{"$f":"SUM(#REF!)","v":{"$error":"#REF!"}},{"$f":"SUM(#REF!)","v":{"$error":"#REF!"}},{"$f":"SUM(#REF!)","v":{"$error":"#REF!"}},{"$f":"SUM(#REF!)","v":{"$error":"#REF!"}},{"$f":"SUM(#REF!)","v":{"$error":"#REF!"}},{"$f":"SUM(#REF!)","v":{"$error":"#REF!"}},{"$f":"SUM(#REF!)","v":{"$error":"#REF!"}},{"$f":"SUM(#REF!)","v":{"$error":"#REF!"}},{"$f":"SUM(#REF!)","v":{"$error":"#REF!"}},{"$f":"SUM(#REF!)","v":{"$error":"#REF!"}},{"$f":"SUM(#REF!)","v":{"$error":"#REF!"}},{"$f":"SUM(#REF!)","v":{"$error":"#REF!"}},{"$f":"SUM(#REF!)","v":{"$error":"#REF!"}},{"$f":"SUM(#REF!)","v":{"$error":"#REF!"}},{"$f":"SUM(#REF!)","v":{"$error":"#REF!"}},{"$f":"SUM(#REF!)","v":{"$error":"#REF!"}},{"$f":"SUM(#REF!)","v":{"$error":"#REF!"}},{"$f":"SUM(#REF!)","v":{"$error":"#REF!"}},{"$f":"SUM(#REF!)","v":{"$error":"#REF!"}},{"$f":"SUM(#REF!)","v":{"$error":"#REF!"}},{"$f":"SUM(#REF!)","v":{"$error":"#REF!"}},{"$f":"SUM(#REF!)","v":{"$error":"#REF!"}},{"$f":"SUM(#REF!)","v":{"$error":"#REF!"}},{"$f":"SUM(#REF!)","v":{"$error":"#REF!"}},{"$f":"SUM(#REF!)","v":{"$error":"#REF!"}},{"$f":"SUM(#REF!)","v":{"$error":"#REF!"}},{"$f":"SUM(#REF!)","v":{"$error":"#REF!"}},{"$f":"SUM(#REF!)","v":{"$error":"#REF!"}},{"$f":"SUM(#REF!)","v":{"$error":"#REF!"}},{"$f":"SUM(#REF!)","v":{"$error":"#REF!"}},{"$f":"SUM(#REF!)","v":{"$error":"#REF!"}},{"$f":"SUM(#REF!)","v":{"$error":"#REF!"}},{"$f":"SUM(#REF!)","v":{"$error":"#REF!"}},{"$f":"SUM(#REF!)","v":{"$error":"#REF!"}},{"$f":"SUM(#REF!)","v":{"$error":"#REF!"}},{"$f":"SUM(#REF!)","v":{"$error":"#REF!"}},{"$f":"SUM(#REF!)","v":{"$error":"#REF!"}},{"$f":"SUM(#REF!)","v":{"$error":"#REF!"}},{"$f":"SUM(#REF!)","v":{"$error":"#REF!"}},{"$f":"SUM(#REF!)","v":{"$error":"#REF!"}},{"$f":"SUM(#REF!)","v":{"$error":"#REF!"}},{"$f":"SUM(#REF!)","v":{"$error":"#REF!"}},{"$f":"SUM(#REF!)","v":{"$error":"#REF!"}},{"$f":"SUM(#REF!)","v":{"$error":"#REF!"}},{"$f":"SUM(#REF!)","v":{"$error":"#REF!"}},{"$f":"SUM(#REF!)","v":{"$error":"#REF!"}},{"$f":"SUM(#REF!)","v":{"$error":"#REF!"}},{"$f":"SUM(#REF!)","v":{"$error":"#REF!"}},{"$f":"SUM(#REF!)","v":{"$error":"#REF!"}},{"$f":"SUM(#REF!)","v":{"$error":"#REF!"}},{"$f":"SUM(#REF!)","v":{"$error":"#REF!"}},{"$f":"SUM(#REF!)","v":{"$error":"#REF!"}},{"$f":"SUM(#REF!)","v":{"$error":"#REF!"}},{"$f":"SUM(#REF!)","v":{"$error":"#REF!"}},{"$f":"SUM(#REF!)","v":{"$error":"#REF!"}},{"$f":"SUM(#REF!)","v":{"$error":"#REF!"}},{"$f":"SUM(#REF!)","v":{"$error":"#REF!"}},{"$f":"SUM(#REF!)","v":{"$error":"#REF!"}},{"$f":"SUM(#REF!)","v":{"$error":"#REF!"}},{"$f":"SUM(#REF!)","v":{"$error":"#REF!"}},{"$f":"SUM(#REF!)","v":{"$error":"#REF!"}},{"$f":"SUM(#REF!)","v":{"$error":"#REF!"}},{"$f":"SUM(#REF!)","v":{"$error":"#REF!"}},{"$f":"SUM(#REF!)","v":{"$error":"#REF!"}},{"$f":"SUM(#REF!)","v":{"$error":"#REF!"}},{"$f":"SUM(#REF!)","v":{"$error":"#REF!"}},{"$f":"SUM(#REF!)","v":{"$error":"#REF!"}},{"$f":"SUM(#REF!)","v":{"$error":"#REF!"}},{"$f":"SUM(#REF!)","v":{"$error":"#REF!"}},{"$f":"SUM(#REF!)","v":{"$error":"#REF!"}},{"$f":"SUM(#REF!)","v":{"$error":"#REF!"}},{"$f":"SUM(#REF!)","v":{"$error":"#REF!"}},{"$f":"SUM(#REF!)","v":{"$error":"#REF!"}},{"$f":"SUM(#REF!)","v":{"$error":"#REF!"}},{"$f":"SUM(#REF!)","v":{"$error":"#REF!"}},{"$f":"SUM(#REF!)","v":{"$error":"#REF!"}},{"$f":"SUM(#REF!)","v":{"$error":"#REF!"}},{"$f":"SUM(#REF!)","v":{"$error":"#REF!"}},{"$f":"SUM(#REF!)","v":{"$error":"#REF!"}},{"$f":"SUM(#REF!)","v":{"$error":"#REF!"}},{"$f":"SUM(#REF!)","v":{"$error":"#REF!"}},{"$f":"SUM(#REF!)","v":{"$error":"#REF!"}},{"$f":"SUM(#REF!)","v":{"$error":"#REF!"}},{"$f":"SUM(#REF!)","v":{"$error":"#REF!"}},{"$f":"SUM(#REF!)","v":{"$error":"#REF!"}},{"$f":"SUM(#REF!)","v":{"$error":"#REF!"}},{"$f":"SUM(#REF!)","v":{"$error":"#REF!"}},{"$f":"SUM(#REF!)","v":{"$error":"#REF!"}},{"$f":"SUM(#REF!)","v":{"$error":"#REF!"}},{"$f":"SUM(#REF!)","v":{"$error":"#REF!"}},{"$f":"SUM(#REF!)","v":{"$error":"#REF!"}},{"$f":"SUM(#REF!)","v":{"$error":"#REF!"}},{"$f":"SUM(#REF!)","v":{"$error":"#REF!"}},{"$f":"SUM(#REF!)","v":{"$error":"#REF!"}},{"$f":"SUM(#REF!)","v":{"$error":"#REF!"}},{"$f":"SUM(#REF!)","v":{"$error":"#REF!"}},{"$f":"SUM(#REF!)","v":{"$error":"#REF!"}},{"$f":"SUM(#REF!)","v":{"$error":"#REF!"}},{"$f":"SUM(#REF!)","v":{"$error":"#REF!"}},{"$f":"SUM(#REF!)","v":{"$error":"#REF!"}},{"$f":"SUM(#REF!)","v":{"$error":"#REF!"}},{"$f":"SUM(#REF!)","v":{"$error":"#REF!"}},{"$f":"SUM(#REF!)","v":{"$error":"#REF!"}},{"$f":"SUM(#REF!)","v":{"$error":"#REF!"}},{"$f":"SUM(#REF!)","v":{"$error":"#REF!"}},{"$f":"SUM(#REF!)","v":{"$error":"#REF!"}},{"$f":"SUM(#REF!)","v":{"$error":"#REF!"}},{"$f":"SUM(#REF!)","v":{"$error":"#REF!"}},{"$f":"SUM(#REF!)","v":{"$error":"#REF!"}},{"$f":"SUM(#REF!)","v":{"$error":"#REF!"}},{"$f":"SUM(#REF!)","v":{"$error":"#REF!"}},{"$f":"SUM(#REF!)","v":{"$error":"#REF!"}},{"$f":"SUM(#REF!)","v":{"$error":"#REF!"}},{"$f":"SUM(#REF!)","v":{"$error":"#REF!"}},{"$f":"SUM(#REF!)","v":{"$error":"#REF!"}},{"$f":"SUM(#REF!)","v":{"$error":"#REF!"}},{"$f":"SUM(#REF!)","v":{"$error":"#REF!"}},{"$f":"SUM(#REF!)","v":{"$error":"#REF!"}},{"$f":"SUM(#REF!)","v":{"$error":"#REF!"}},{"$f":"SUM(#REF!)","v":{"$error":"#REF!"}},{"$f":"SUM(#REF!)","v":{"$error":"#REF!"}},{"$f":"SUM(#REF!)","v":{"$error":"#REF!"}},{"$f":"SUM(#REF!)","v":{"$error":"#REF!"}},{"$f":"SUM(#REF!)","v":{"$error":"#REF!"}},{"$f":"SUM(#REF!)","v":{"$error":"#REF!"}},{"$f":"SUM(#REF!)","v":{"$error":"#REF!"}},{"$f":"SUM(#REF!)","v":{"$error":"#REF!"}},{"$f":"SUM(#REF!)","v":{"$error":"#REF!"}},{"$f":"SUM(#REF!)","v":{"$error":"#REF!"}},{"$f":"SUM(#REF!)","v":{"$error":"#REF!"}},{"$f":"SUM(#REF!)","v":{"$error":"#REF!"}},{"$f":"SUM(#REF!)","v":{"$error":"#REF!"}},{"$f":"SUM(#REF!)","v":{"$error":"#REF!"}},{"$f":"SUM(#REF!)","v":{"$error":"#REF!"}},{"$f":"SUM(#REF!)","v":{"$error":"#REF!"}},{"$f":"SUM(#REF!)","v":{"$error":"#REF!"}},{"$f":"SUM(#REF!)","v":{"$error":"#REF!"}},{"$f":"SUM(#REF!)","v":{"$error":"#REF!"}},{"$f":"SUM(#REF!)","v":{"$error":"#REF!"}},{"$f":"SUM(#REF!)","v":{"$error":"#REF!"}},{"$f":"SUM(#REF!)","v":{"$error":"#REF!"}},{"$f":"SUM(#REF!)","v":{"$error":"#REF!"}},{"$f":"SUM(#REF!)","v":{"$error":"#REF!"}},{"$f":"SUM(#REF!)","v":{"$error":"#REF!"}},{"$f":"SUM(#REF!)","v":{"$error":"#REF!"}},{"$f":"SUM(#REF!)","v":{"$error":"#REF!"}},{"$f":"SUM(#REF!)","v":{"$error":"#REF!"}},{"$f":"SUM(#REF!)","v":{"$error":"#REF!"}},{"$f":"SUM(#REF!)","v":{"$error":"#REF!"}},{"$f":"SUM(#REF!)","v":{"$error":"#REF!"}},{"$f":"SUM(#REF!)","v":{"$error":"#REF!"}},{"$f":"SUM(#REF!)","v":{"$error":"#REF!"}},{"$f":"SUM(#REF!)","v":{"$error":"#REF!"}},{"$f":"SUM(#REF!)","v":{"$error":"#REF!"}},{"$f":"SUM(#REF!)","v":{"$error":"#REF!"}},{"$f":"SUM(#REF!)","v":{"$error":"#REF!"}},{"$f":"SUM(#REF!)","v":{"$error":"#REF!"}},{"$f":"SUM(#REF!)","v":{"$error":"#REF!"}},{"$f":"SUM(#REF!)","v":{"$error":"#REF!"}},{"$f":"SUM(#REF!)","v":{"$error":"#REF!"}},{"$f":"SUM(#REF!)","v":{"$error":"#REF!"}},{"$f":"SUM(#REF!)","v":{"$error":"#REF!"}},{"$f":"SUM(#REF!)","v":{"$error":"#REF!"}},{"$f":"SUM(#REF!)","v":{"$error":"#REF!"}},{"$f":"SUM(#REF!)","v":{"$error":"#REF!"}},{"$f":"SUM(#REF!)","v":{"$error":"#REF!"}},{"$f":"SUM(#REF!)","v":{"$error":"#REF!"}},{"$f":"SUM(#REF!)","v":{"$error":"#REF!"}},{"$f":"SUM(#REF!)","v":{"$error":"#REF!"}},{"$f":"SUM(#REF!)","v":{"$error":"#REF!"}},{"$f":"SUM(#REF!)","v":{"$error":"#REF!"}},{"$f":"SUM(#REF!)","v":{"$error":"#REF!"}},{"$f":"SUM(#REF!)","v":{"$error":"#REF!"}},{"$f":"SUM(#REF!)","v":{"$error":"#REF!"}},{"$f":"SUM(#REF!)","v":{"$error":"#REF!"}},{"$f":"SUM(#REF!)","v":{"$error":"#REF!"}},{"$f":"SUM(#REF!)","v":{"$error":"#REF!"}},{"$f":"SUM(#REF!)","v":{"$error":"#REF!"}},{"$f":"SUM(#REF!)","v":{"$error":"#REF!"}},{"$f":"SUM(#REF!)","v":{"$error":"#REF!"}},{"$f":"SUM(#REF!)","v":{"$error":"#REF!"}},{"$f":"SUM(#REF!)","v":{"$error":"#REF!"}},{"$f":"SUM(#REF!)","v":{"$error":"#REF!"}},{"$f":"SUM(#REF!)","v":{"$error":"#REF!"}},{"$f":"SUM(#REF!)","v":{"$error":"#REF!"}},{"$f":"SUM(#REF!)","v":{"$error":"#REF!"}},{"$f":"SUM(#REF!)","v":{"$error":"#REF!"}},{"$f":"SUM(#REF!)","v":{"$error":"#REF!"}},{"$f":"SUM(#REF!)","v":{"$error":"#REF!"}},{"$f":"SUM(#REF!)","v":{"$error":"#REF!"}},{"$f":"SUM(#REF!)","v":{"$error":"#REF!"}},{"$f":"SUM(#REF!)","v":{"$error":"#REF!"}},{"$f":"SUM(#REF!)","v":{"$error":"#REF!"}},{"$f":"SUM(#REF!)","v":{"$error":"#REF!"}},{"$f":"SUM(#REF!)","v":{"$error":"#REF!"}},{"$f":"SUM(#REF!)","v":{"$error":"#REF!"}},{"$f":"SUM(#REF!)","v":{"$error":"#REF!"}},{"$f":"SUM(#REF!)","v":{"$error":"#REF!"}},{"$f":"SUM(#REF!)","v":{"$error":"#REF!"}},{"$f":"SUM(#REF!)","v":{"$error":"#REF!"}},{"$f":"SUM(#REF!)","v":{"$error":"#REF!"}},{"$f":"SUM(#REF!)","v":{"$error":"#REF!"}},{"$f":"SUM(#REF!)","v":{"$error":"#REF!"}},{"$f":"SUM(#REF!)","v":{"$error":"#REF!"}},{"$f":"SUM(#REF!)","v":{"$error":"#REF!"}},{"$f":"SUM(#REF!)","v":{"$error":"#REF!"}},{"$f":"SUM(#REF!)","v":{"$error":"#REF!"}},{"$f":"SUM(#REF!)","v":{"$error":"#REF!"}},{"$f":"SUM(#REF!)","v":{"$error":"#REF!"}},{"$f":"SUM(#REF!)","v":{"$error":"#REF!"}},{"$f":"SUM(#REF!)","v":{"$error":"#REF!"}},{"$f":"SUM(#REF!)","v":{"$error":"#REF!"}},{"$f":"SUM(#REF!)","v":{"$error":"#REF!"}},{"$f":"SUM(#REF!)","v":{"$error":"#REF!"}},{"$f":"SUM(#REF!)","v":{"$error":"#REF!"}},{"$f":"SUM(#REF!)","v":{"$error":"#REF!"}},{"$f":"SUM(#REF!)","v":{"$error":"#REF!"}},{"$f":"SUM(#REF!)","v":{"$error":"#REF!"}},{"$f":"SUM(#REF!)","v":{"$error":"#REF!"}},{"$f":"SUM(#REF!)","v":{"$error":"#REF!"}},{"$f":"SUM(#REF!)","v":{"$error":"#REF!"}},{"$f":"SUM(#REF!)","v":{"$error":"#REF!"}},{"$f":"SUM(#REF!)","v":{"$error":"#REF!"}},{"$f":"SUM(#REF!)","v":{"$error":"#REF!"}},{"$f":"SUM(#REF!)","v":{"$error":"#REF!"}},{"$f":"SUM(#REF!)","v":{"$error":"#REF!"}},{"$f":"SUM(#REF!)","v":{"$error":"#REF!"}},{"$f":"SUM(#REF!)","v":{"$error":"#REF!"}},{"$f":"SUM(#REF!)","v":{"$error":"#REF!"}},{"$f":"SUM(#REF!)","v":{"$error":"#REF!"}},{"$f":"SUM(#REF!)","v":{"$error":"#REF!"}},{"$f":"SUM(#REF!)","v":{"$error":"#REF!"}},{"$f":"SUM(#REF!)","v":{"$error":"#REF!"}},{"$f":"SUM(#REF!)","v":{"$error":"#REF!"}},{"$f":"SUM(#REF!)","v":{"$error":"#REF!"}},{"$f":"SUM(#REF!)","v":{"$error":"#REF!"}},{"$f":"SUM(#REF!)","v":{"$error":"#REF!"}},{"$f":"SUM(#REF!)","v":{"$error":"#REF!"}},{"$f":"SUM(#REF!)","v":{"$error":"#REF!"}},{"$f":"SUM(#REF!)","v":{"$error":"#REF!"}},{"$f":"SUM(#REF!)","v":{"$error":"#REF!"}},{"$f":"SUM(#REF!)","v":{"$error":"#REF!"}},{"$f":"SUM(#REF!)","v":{"$error":"#REF!"}},{"$f":"SUM(#REF!)","v":{"$error":"#REF!"}},{"$f":"SUM(#REF!)","v":{"$error":"#REF!"}},{"$f":"SUM(#REF!)","v":{"$error":"#REF!"}},{"$f":"SUM(#REF!)","v":{"$error":"#REF!"}},{"$f":"SUM(#REF!)","v":{"$error":"#REF!"}},{"$f":"SUM(#REF!)","v":{"$error":"#REF!"}},{"$f":"SUM(#REF!)","v":{"$error":"#REF!"}},{"$f":"SUM(#REF!)","v":{"$error":"#REF!"}},{"$f":"SUM(#REF!)","v":{"$error":"#REF!"}},{"$f":"SUM(#REF!)","v":{"$error":"#REF!"}},{"$f":"SUM(#REF!)","v":{"$error":"#REF!"}},{"$f":"SUM(#REF!)","v":{"$error":"#REF!"}},{"$f":"SUM(#REF!)","v":{"$error":"#REF!"}},{"$f":"SUM(#REF!)","v":{"$error":"#REF!"}},{"$f":"SUM(#REF!)","v":{"$error":"#REF!"}},{"$f":"SUM(#REF!)","v":{"$error":"#REF!"}},{"$f":"SUM(#REF!)","v":{"$error":"#REF!"}},{"$f":"SUM(#REF!)","v":{"$error":"#REF!"}},{"$f":"SUM(#REF!)","v":{"$error":"#REF!"}},{"$f":"SUM(#REF!)","v":{"$error":"#REF!"}},{"$f":"SUM(#REF!)","v":{"$error":"#REF!"}},{"$f":"SUM(#REF!)","v":{"$error":"#REF!"}},{"$f":"SUM(#REF!)","v":{"$error":"#REF!"}},{"$f":"SUM(#REF!)","v":{"$error":"#REF!"}},{"$f":"SUM(#REF!)","v":{"$error":"#REF!"}},{"$f":"SUM(#REF!)","v":{"$error":"#REF!"}},{"$f":"SUM(#REF!)","v":{"$error":"#REF!"}},{"$f":"SUM(#REF!)","v":{"$error":"#REF!"}},{"$f":"SUM(#REF!)","v":{"$error":"#REF!"}},{"$f":"SUM(#REF!)","v":{"$error":"#REF!"}},{"$f":"SUM(#REF!)","v":{"$error":"#REF!"}},{"$f":"SUM(#REF!)","v":{"$error":"#REF!"}},{"$f":"SUM(#REF!)","v":{"$error":"#REF!"}},{"$f":"SUM(#REF!)","v":{"$error":"#REF!"}},{"$f":"SUM(#REF!)","v":{"$error":"#REF!"}},{"$f":"SUM(#REF!)","v":{"$error":"#REF!"}},{"$f":"SUM(#REF!)","v":{"$error":"#REF!"}},{"$f":"SUM(#REF!)","v":{"$error":"#REF!"}},{"$f":"SUM(#REF!)","v":{"$error":"#REF!"}},{"$f":"SUM(#REF!)","v":{"$error":"#REF!"}},{"$f":"SUM(#REF!)","v":{"$error":"#REF!"}},{"$f":"SUM(#REF!)","v":{"$error":"#REF!"}},{"$f":"SUM(#REF!)","v":{"$error":"#REF!"}},{"$f":"SUM(#REF!)","v":{"$error":"#REF!"}},{"$f":"SUM(#REF!)","v":{"$error":"#REF!"}},{"$f":"SUM(#REF!)","v":{"$error":"#REF!"}},{"$f":"SUM(#REF!)","v":{"$error":"#REF!"}},{"$f":"SUM(#REF!)","v":{"$error":"#REF!"}},{"$f":"SUM(#REF!)","v":{"$error":"#REF!"}},{"$f":"SUM(#REF!)","v":{"$error":"#REF!"}},{"$f":"SUM(#REF!)","v":{"$error":"#REF!"}},{"$f":"SUM(#REF!)","v":{"$error":"#REF!"}},{"$f":"SUM(#REF!)","v":{"$error":"#REF!"}},{"$f":"SUM(#REF!)","v":{"$error":"#REF!"}},{"$f":"SUM(#REF!)","v":{"$error":"#REF!"}},{"$f":"SUM(#REF!)","v":{"$error":"#REF!"}},{"$f":"SUM(#REF!)","v":{"$error":"#REF!"}},{"$f":"SUM(#REF!)","v":{"$error":"#REF!"}},{"$f":"SUM(#REF!)","v":{"$error":"#REF!"}},{"$f":"SUM(#REF!)","v":{"$error":"#REF!"}},{"$f":"SUM(#REF!)","v":{"$error":"#REF!"}},{"$f":"SUM(#REF!)","v":{"$error":"#REF!"}},{"$f":"SUM(#REF!)","v":{"$error":"#REF!"}},{"$f":"SUM(#REF!)","v":{"$error":"#REF!"}},{"$f":"SUM(#REF!)","v":{"$error":"#REF!"}},{"$f":"SUM(#REF!)","v":{"$error":"#REF!"}},{"$f":"SUM(#REF!)","v":{"$error":"#REF!"}},{"$f":"SUM(#REF!)","v":{"$error":"#REF!"}},{"$f":"SUM(#REF!)","v":{"$error":"#REF!"}},{"$f":"SUM(#REF!)","v":{"$error":"#REF!"}},{"$f":"SUM(#REF!)","v":{"$error":"#REF!"}},{"$f":"SUM(#REF!)","v":{"$error":"#REF!"}},{"$f":"SUM(#REF!)","v":{"$error":"#REF!"}},{"$f":"SUM(#REF!)","v":{"$error":"#REF!"}},{"$f":"SUM(#REF!)","v":{"$error":"#REF!"}},{"$f":"SUM(#REF!)","v":{"$error":"#REF!"}},{"$f":"SUM(#REF!)","v":{"$error":"#REF!"}},{"$f":"SUM(#REF!)","v":{"$error":"#REF!"}},{"$f":"SUM(#REF!)","v":{"$error":"#REF!"}},{"$f":"SUM(#REF!)","v":{"$error":"#REF!"}},{"$f":"SUM(#REF!)","v":{"$error":"#REF!"}},{"$f":"SUM(#REF!)","v":{"$error":"#REF!"}},{"$f":"SUM(#REF!)","v":{"$error":"#REF!"}},{"$f":"SUM(#REF!)","v":{"$error":"#REF!"}},{"$f":"SUM(#REF!)","v":{"$error":"#REF!"}},{"$f":"SUM(#REF!)","v":{"$error":"#REF!"}},{"$f":"SUM(#REF!)","v":{"$error":"#REF!"}},{"$f":"SUM(#REF!)","v":{"$error":"#REF!"}},{"$f":"SUM(#REF!)","v":{"$error":"#REF!"}},{"$f":"SUM(#REF!)","v":{"$error":"#REF!"}},{"$f":"SUM(#REF!)","v":{"$error":"#REF!"}},{"$f":"SUM(#REF!)","v":{"$error":"#REF!"}},{"$f":"SUM(#REF!)","v":{"$error":"#REF!"}},{"$f":"SUM(#REF!)","v":{"$error":"#REF!"}},{"$f":"SUM(#REF!)","v":{"$error":"#REF!"}},{"$f":"SUM(#REF!)","v":{"$error":"#REF!"}},{"$f":"SUM(#REF!)","v":{"$error":"#REF!"}},{"$f":"SUM(#REF!)","v":{"$error":"#REF!"}},{"$f":"SUM(#REF!)","v":{"$error":"#REF!"}},{"$f":"SUM(#REF!)","v":{"$error":"#REF!"}},{"$f":"SUM(#REF!)","v":{"$error":"#REF!"}},{"$f":"SUM(#REF!)","v":{"$error":"#REF!"}},{"$f":"SUM(#REF!)","v":{"$error":"#REF!"}},{"$f":"SUM(#REF!)","v":{"$error":"#REF!"}},{"$f":"SUM(#REF!)","v":{"$error":"#REF!"}},{"$f":"SUM(#REF!)","v":{"$error":"#REF!"}},{"$f":"SUM(#REF!)","v":{"$error":"#REF!"}},{"$f":"SUM(#REF!)","v":{"$error":"#REF!"}},{"$f":"SUM(#REF!)","v":{"$error":"#REF!"}},{"$f":"SUM(#REF!)","v":{"$error":"#REF!"}},{"$f":"SUM(#REF!)","v":{"$error":"#REF!"}},{"$f":"SUM(#REF!)","v":{"$error":"#REF!"}},{"$f":"SUM(#REF!)","v":{"$error":"#REF!"}},{"$f":"SUM(#REF!)","v":{"$error":"#REF!"}},{"$f":"SUM(#REF!)","v":{"$error":"#REF!"}},{"$f":"SUM(#REF!)","v":{"$error":"#REF!"}},{"$f":"SUM(#REF!)","v":{"$error":"#REF!"}},{"$f":"SUM(#REF!)","v":{"$error":"#REF!"}},{"$f":"SUM(#REF!)","v":{"$error":"#REF!"}},{"$f":"SUM(#REF!)","v":{"$error":"#REF!"}},{"$f":"SUM(#REF!)","v":{"$error":"#REF!"}},{"$f":"SUM(#REF!)","v":{"$error":"#REF!"}},{"$f":"SUM(#REF!)","v":{"$error":"#REF!"}},{"$f":"SUM(#REF!)","v":{"$error":"#REF!"}},{"$f":"SUM(#REF!)","v":{"$error":"#REF!"}},{"$f":"SUM(#REF!)","v":{"$error":"#REF!"}},{"$f":"SUM(#REF!)","v":{"$error":"#REF!"}},{"$f":"SUM(#REF!)","v":{"$error":"#REF!"}},{"$f":"SUM(#REF!)","v":{"$error":"#REF!"}},{"$f":"SUM(#REF!)","v":{"$error":"#REF!"}},{"$f":"SUM(#REF!)","v":{"$error":"#REF!"}},{"$f":"SUM(#REF!)","v":{"$error":"#REF!"}},{"$f":"SUM(#REF!)","v":{"$error":"#REF!"}},{"$f":"SUM(#REF!)","v":{"$error":"#REF!"}},{"$f":"SUM(#REF!)","v":{"$error":"#REF!"}},{"$f":"SUM(#REF!)","v":{"$error":"#REF!"}},{"$f":"SUM(#REF!)","v":{"$error":"#REF!"}},{"$f":"SUM(#REF!)","v":{"$error":"#REF!"}},{"$f":"SUM(#REF!)","v":{"$error":"#REF!"}},{"$f":"SUM(#REF!)","v":{"$error":"#REF!"}},{"$f":"SUM(#REF!)","v":{"$error":"#REF!"}},{"$f":"SUM(#REF!)","v":{"$error":"#REF!"}},{"$f":"SUM(#REF!)","v":{"$error":"#REF!"}},{"$f":"SUM(#REF!)","v":{"$error":"#REF!"}},{"$f":"SUM(#REF!)","v":{"$error":"#REF!"}},{"$f":"SUM(#REF!)","v":{"$error":"#REF!"}},{"$f":"SUM(#REF!)","v":{"$error":"#REF!"}},{"$f":"SUM(#REF!)","v":{"$error":"#REF!"}},{"$f":"SUM(#REF!)","v":{"$error":"#REF!"}},{"$f":"SUM(#REF!)","v":{"$error":"#REF!"}},{"$f":"SUM(#REF!)","v":{"$error":"#REF!"}},{"$f":"SUM(#REF!)","v":{"$error":"#REF!"}},{"$f":"SUM(#REF!)","v":{"$error":"#REF!"}},{"$f":"SUM(#REF!)","v":{"$error":"#REF!"}},{"$f":"SUM(#REF!)","v":{"$error":"#REF!"}},{"$f":"SUM(#REF!)","v":{"$error":"#REF!"}},{"$f":"SUM(#REF!)","v":{"$error":"#REF!"}},{"$f":"SUM(#REF!)","v":{"$error":"#REF!"}},{"$f":"SUM(#REF!)","v":{"$error":"#REF!"}},{"$f":"SUM(#REF!)","v":{"$error":"#REF!"}},{"$f":"SUM(#REF!)","v":{"$error":"#REF!"}},{"$f":"SUM(#REF!)","v":{"$error":"#REF!"}},{"$f":"SUM(#REF!)","v":{"$error":"#REF!"}},{"$f":"SUM(#REF!)","v":{"$error":"#REF!"}},{"$f":"SUM(#REF!)","v":{"$error":"#REF!"}},{"$f":"SUM(#REF!)","v":{"$error":"#REF!"}},{"$f":"SUM(#REF!)","v":{"$error":"#REF!"}},{"$f":"SUM(#REF!)","v":{"$error":"#REF!"}},{"$f":"SUM(#REF!)","v":{"$error":"#REF!"}},{"$f":"SUM(#REF!)","v":{"$error":"#REF!"}},{"$f":"SUM(#REF!)","v":{"$error":"#REF!"}},{"$f":"SUM(#REF!)","v":{"$error":"#REF!"}},{"$f":"SUM(#REF!)","v":{"$error":"#REF!"}},{"$f":"SUM(#REF!)","v":{"$error":"#REF!"}},{"$f":"SUM(#REF!)","v":{"$error":"#REF!"}},{"$f":"SUM(#REF!)","v":{"$error":"#REF!"}},{"$f":"SUM(#REF!)","v":{"$error":"#REF!"}},{"$f":"SUM(#REF!)","v":{"$error":"#REF!"}},{"$f":"SUM(#REF!)","v":{"$error":"#REF!"}},{"$f":"SUM(#REF!)","v":{"$error":"#REF!"}},{"$f":"SUM(#REF!)","v":{"$error":"#REF!"}},{"$f":"SUM(#REF!)","v":{"$error":"#REF!"}},{"$f":"SUM(#REF!)","v":{"$error":"#REF!"}},{"$f":"SUM(#REF!)","v":{"$error":"#REF!"}},{"$f":"SUM(#REF!)","v":{"$error":"#REF!"}},{"$f":"SUM(#REF!)","v":{"$error":"#REF!"}},{"$f":"SUM(#REF!)","v":{"$error":"#REF!"}},{"$f":"SUM(#REF!)","v":{"$error":"#REF!"}},{"$f":"SUM(#REF!)","v":{"$error":"#REF!"}},{"$f":"SUM(#REF!)","v":{"$error":"#REF!"}},{"$f":"SUM(#REF!)","v":{"$error":"#REF!"}},{"$f":"SUM(#REF!)","v":{"$error":"#REF!"}},{"$f":"SUM(#REF!)","v":{"$error":"#REF!"}},{"$f":"SUM(#REF!)","v":{"$error":"#REF!"}},{"$f":"SUM(#REF!)","v":{"$error":"#REF!"}},{"$f":"SUM(#REF!)","v":{"$error":"#REF!"}},{"$f":"SUM(#REF!)","v":{"$error":"#REF!"}},{"$f":"SUM(#REF!)","v":{"$error":"#REF!"}},{"$f":"SUM(#REF!)","v":{"$error":"#REF!"}},{"$f":"SUM(#REF!)","v":{"$error":"#REF!"}},{"$f":"SUM(#REF!)","v":{"$error":"#REF!"}},{"$f":"SUM(#REF!)","v":{"$error":"#REF!"}},{"$f":"SUM(#REF!)","v":{"$error":"#REF!"}},{"$f":"SUM(#REF!)","v":{"$error":"#REF!"}},{"$f":"SUM(#REF!)","v":{"$error":"#REF!"}},{"$f":"SUM(#REF!)","v":{"$error":"#REF!"}},{"$f":"SUM(#REF!)","v":{"$error":"#REF!"}},{"$f":"SUM(#REF!)","v":{"$error":"#REF!"}},{"$f":"SUM(#REF!)","v":{"$error":"#REF!"}},{"$f":"SUM(#REF!)","v":{"$error":"#REF!"}},{"$f":"SUM(#REF!)","v":{"$error":"#REF!"}},{"$f":"SUM(#REF!)","v":{"$error":"#REF!"}},{"$f":"SUM(#REF!)","v":{"$error":"#REF!"}},{"$f":"SUM(#REF!)","v":{"$error":"#REF!"}},{"$f":"SUM(#REF!)","v":{"$error":"#REF!"}},{"$f":"SUM(#REF!)","v":{"$error":"#REF!"}},{"$f":"SUM(#REF!)","v":{"$error":"#REF!"}},{"$f":"SUM(#REF!)","v":{"$error":"#REF!"}},{"$f":"SUM(#REF!)","v":{"$error":"#REF!"}},{"$f":"SUM(#REF!)","v":{"$error":"#REF!"}},{"$f":"SUM(#REF!)","v":{"$error":"#REF!"}},{"$f":"SUM(#REF!)","v":{"$error":"#REF!"}},{"$f":"SUM(#REF!)","v":{"$error":"#REF!"}},{"$f":"SUM(#REF!)","v":{"$error":"#REF!"}},{"$f":"SUM(#REF!)","v":{"$error":"#REF!"}},{"$f":"SUM(#REF!)","v":{"$error":"#REF!"}},{"$f":"SUM(#REF!)","v":{"$error":"#REF!"}},{"$f":"SUM(#REF!)","v":{"$error":"#REF!"}},{"$f":"SUM(#REF!)","v":{"$error":"#REF!"}},{"$f":"SUM(#REF!)","v":{"$error":"#REF!"}},{"$f":"SUM(#REF!)","v":{"$error":"#REF!"}},{"$f":"SUM(#REF!)","v":{"$error":"#REF!"}},{"$f":"SUM(#REF!)","v":{"$error":"#REF!"}},{"$f":"SUM(#REF!)","v":{"$error":"#REF!"}},{"$f":"SUM(#REF!)","v":{"$error":"#REF!"}},{"$f":"SUM(#REF!)","v":{"$error":"#REF!"}},{"$f":"SUM(#REF!)","v":{"$error":"#REF!"}},{"$f":"SUM(#REF!)","v":{"$error":"#REF!"}},{"$f":"SUM(#REF!)","v":{"$error":"#REF!"}},{"$f":"SUM(#REF!)","v":{"$error":"#REF!"}},{"$f":"SUM(#REF!)","v":{"$error":"#REF!"}},{"$f":"SUM(#REF!)","v":{"$error":"#REF!"}},{"$f":"SUM(#REF!)","v":{"$error":"#REF!"}},{"$f":"SUM(#REF!)","v":{"$error":"#REF!"}},{"$f":"SUM(#REF!)","v":{"$error":"#REF!"}},{"$f":"SUM(#REF!)","v":{"$error":"#REF!"}},{"$f":"SUM(#REF!)","v":{"$error":"#REF!"}},{"$f":"SUM(#REF!)","v":{"$error":"#REF!"}},{"$f":"SUM(#REF!)","v":{"$error":"#REF!"}},{"$f":"SUM(#REF!)","v":{"$error":"#REF!"}},{"$f":"SUM(#REF!)","v":{"$error":"#REF!"}},{"$f":"SUM(#REF!)","v":{"$error":"#REF!"}},{"$f":"SUM(#REF!)","v":{"$error":"#REF!"}},{"$f":"SUM(#REF!)","v":{"$error":"#REF!"}},{"$f":"SUM(#REF!)","v":{"$error":"#REF!"}},{"$f":"SUM(#REF!)","v":{"$error":"#REF!"}},{"$f":"SUM(#REF!)","v":{"$error":"#REF!"}},{"$f":"SUM(#REF!)","v":{"$error":"#REF!"}},{"$f":"SUM(#REF!)","v":{"$error":"#REF!"}},{"$f":"SUM(#REF!)","v":{"$error":"#REF!"}},{"$f":"SUM(#REF!)","v":{"$error":"#REF!"}},{"$f":"SUM(#REF!)","v":{"$error":"#REF!"}},{"$f":"SUM(#REF!)","v":{"$error":"#REF!"}},{"$f":"SUM(#REF!)","v":{"$error":"#REF!"}},{"$f":"SUM(#REF!)","v":{"$error":"#REF!"}},{"$f":"SUM(#REF!)","v":{"$error":"#REF!"}},{"$f":"SUM(#REF!)","v":{"$error":"#REF!"}},{"$f":"SUM(#REF!)","v":{"$error":"#REF!"}},{"$f":"SUM(#REF!)","v":{"$error":"#REF!"}},{"$f":"SUM(#REF!)","v":{"$error":"#REF!"}},{"$f":"SUM(#REF!)","v":{"$error":"#REF!"}},{"$f":"SUM(#REF!)","v":{"$error":"#REF!"}},{"$f":"SUM(#REF!)","v":{"$error":"#REF!"}},{"$f":"SUM(#REF!)","v":{"$error":"#REF!"}},{"$f":"SUM(#REF!)","v":{"$error":"#REF!"}},{"$f":"SUM(#REF!)","v":{"$error":"#REF!"}},{"$f":"SUM(#REF!)","v":{"$error":"#REF!"}},{"$f":"SUM(#REF!)","v":{"$error":"#REF!"}},{"$f":"SUM(#REF!)","v":{"$error":"#REF!"}},{"$f":"SUM(#REF!)","v":{"$error":"#REF!"}},{"$f":"SUM(#REF!)","v":{"$error":"#REF!"}},{"$f":"SUM(#REF!)","v":{"$error":"#REF!"}},{"$f":"SUM(#REF!)","v":{"$error":"#REF!"}},{"$f":"SUM(#REF!)","v":{"$error":"#REF!"}},{"$f":"SUM(#REF!)","v":{"$error":"#REF!"}},{"$f":"SUM(#REF!)","v":{"$error":"#REF!"}},{"$f":"SUM(#REF!)","v":{"$error":"#REF!"}},{"$f":"SUM(#REF!)","v":{"$error":"#REF!"}},{"$f":"SUM(#REF!)","v":{"$error":"#REF!"}},{"$f":"SUM(#REF!)","v":{"$error":"#REF!"}},{"$f":"SUM(#REF!)","v":{"$error":"#REF!"}},{"$f":"SUM(#REF!)","v":{"$error":"#REF!"}},{"$f":"SUM(#REF!)","v":{"$error":"#REF!"}},{"$f":"SUM(#REF!)","v":{"$error":"#REF!"}},{"$f":"SUM(#REF!)","v":{"$error":"#REF!"}},{"$f":"SUM(#REF!)","v":{"$error":"#REF!"}},{"$f":"SUM(#REF!)","v":{"$error":"#REF!"}},{"$f":"SUM(#REF!)","v":{"$error":"#REF!"}},{"$f":"SUM(#REF!)","v":{"$error":"#REF!"}},{"$f":"SUM(#REF!)","v":{"$error":"#REF!"}},{"$f":"SUM(#REF!)","v":{"$error":"#REF!"}},{"$f":"SUM(#REF!)","v":{"$error":"#REF!"}},{"$f":"SUM(#REF!)","v":{"$error":"#REF!"}},{"$f":"SUM(#REF!)","v":{"$error":"#REF!"}},{"$f":"SUM(#REF!)","v":{"$error":"#REF!"}},{"$f":"SUM(#REF!)","v":{"$error":"#REF!"}},{"$f":"SUM(#REF!)","v":{"$error":"#REF!"}},{"$f":"SUM(#REF!)","v":{"$error":"#REF!"}},{"$f":"SUM(#REF!)","v":{"$error":"#REF!"}},{"$f":"SUM(#REF!)","v":{"$error":"#REF!"}},{"$f":"SUM(#REF!)","v":{"$error":"#REF!"}},{"$f":"SUM(#REF!)","v":{"$error":"#REF!"}},{"$f":"SUM(#REF!)","v":{"$error":"#REF!"}},{"$f":"SUM(#REF!)","v":{"$error":"#REF!"}},{"$f":"SUM(#REF!)","v":{"$error":"#REF!"}},{"$f":"SUM(#REF!)","v":{"$error":"#REF!"}},{"$f":"SUM(#REF!)","v":{"$error":"#REF!"}},{"$f":"SUM(#REF!)","v":{"$error":"#REF!"}},{"$f":"SUM(#REF!)","v":{"$error":"#REF!"}},{"$f":"SUM(#REF!)","v":{"$error":"#REF!"}},{"$f":"SUM(#REF!)","v":{"$error":"#REF!"}},{"$f":"SUM(#REF!)","v":{"$error":"#REF!"}},{"$f":"SUM(#REF!)","v":{"$error":"#REF!"}},{"$f":"SUM(#REF!)","v":{"$error":"#REF!"}},{"$f":"SUM(#REF!)","v":{"$error":"#REF!"}},{"$f":"SUM(#REF!)","v":{"$error":"#REF!"}},{"$f":"SUM(#REF!)","v":{"$error":"#REF!"}},{"$f":"SUM(#REF!)","v":{"$error":"#REF!"}},{"$f":"SUM(#REF!)","v":{"$error":"#REF!"}},{"$f":"SUM(#REF!)","v":{"$error":"#REF!"}},{"$f":"SUM(#REF!)","v":{"$error":"#REF!"}},{"$f":"SUM(#REF!)","v":{"$error":"#REF!"}},{"$f":"SUM(#REF!)","v":{"$error":"#REF!"}},{"$f":"SUM(#REF!)","v":{"$error":"#REF!"}},{"$f":"SUM(#REF!)","v":{"$error":"#REF!"}},{"$f":"SUM(#REF!)","v":{"$error":"#REF!"}},{"$f":"SUM(#REF!)","v":{"$error":"#REF!"}},{"$f":"SUM(#REF!)","v":{"$error":"#REF!"}},{"$f":"SUM(#REF!)","v":{"$error":"#REF!"}},{"$f":"SUM(#REF!)","v":{"$error":"#REF!"}},{"$f":"SUM(#REF!)","v":{"$error":"#REF!"}},{"$f":"SUM(#REF!)","v":{"$error":"#REF!"}},{"$f":"SUM(#REF!)","v":{"$error":"#REF!"}},{"$f":"SUM(#REF!)","v":{"$error":"#REF!"}},{"$f":"SUM(#REF!)","v":{"$error":"#REF!"}},{"$f":"SUM(#REF!)","v":{"$error":"#REF!"}},{"$f":"SUM(#REF!)","v":{"$error":"#REF!"}},{"$f":"SUM(#REF!)","v":{"$error":"#REF!"}},{"$f":"SUM(#REF!)","v":{"$error":"#REF!"}},{"$f":"SUM(#REF!)","v":{"$error":"#REF!"}},{"$f":"SUM(#REF!)","v":{"$error":"#REF!"}},{"$f":"SUM(#REF!)","v":{"$error":"#REF!"}},{"$f":"SUM(#REF!)","v":{"$error":"#REF!"}},{"$f":"SUM(#REF!)","v":{"$error":"#REF!"}},{"$f":"SUM(#REF!)","v":{"$error":"#REF!"}},{"$f":"SUM(#REF!)","v":{"$error":"#REF!"}},{"$f":"SUM(#REF!)","v":{"$error":"#REF!"}},{"$f":"SUM(#REF!)","v":{"$error":"#REF!"}},{"$f":"SUM(#REF!)","v":{"$error":"#REF!"}},{"$f":"SUM(#REF!)","v":{"$error":"#REF!"}},{"$f":"SUM(#REF!)","v":{"$error":"#REF!"}},{"$f":"SUM(#REF!)","v":{"$error":"#REF!"}},{"$f":"SUM(#REF!)","v":{"$error":"#REF!"}},{"$f":"SUM(#REF!)","v":{"$error":"#REF!"}},{"$f":"SUM(#REF!)","v":{"$error":"#REF!"}},{"$f":"SUM(#REF!)","v":{"$error":"#REF!"}},{"$f":"SUM(#REF!)","v":{"$error":"#REF!"}},{"$f":"SUM(#REF!)","v":{"$error":"#REF!"}},{"$f":"SUM(#REF!)","v":{"$error":"#REF!"}},{"$f":"SUM(#REF!)","v":{"$error":"#REF!"}},{"$f":"SUM(#REF!)","v":{"$error":"#REF!"}},{"$f":"SUM(#REF!)","v":{"$error":"#REF!"}},{"$f":"SUM(#REF!)","v":{"$error":"#REF!"}},{"$f":"SUM(#REF!)","v":{"$error":"#REF!"}},{"$f":"SUM(#REF!)","v":{"$error":"#REF!"}},{"$f":"SUM(#REF!)","v":{"$error":"#REF!"}},{"$f":"SUM(#REF!)","v":{"$error":"#REF!"}},{"$f":"SUM(#REF!)","v":{"$error":"#REF!"}},{"$f":"SUM(#REF!)","v":{"$error":"#REF!"}},{"$f":"SUM(#REF!)","v":{"$error":"#REF!"}},{"$f":"SUM(#REF!)","v":{"$error":"#REF!"}},{"$f":"SUM(#REF!)","v":{"$error":"#REF!"}},{"$f":"SUM(#REF!)","v":{"$error":"#REF!"}},{"$f":"SUM(#REF!)","v":{"$error":"#REF!"}},{"$f":"SUM(#REF!)","v":{"$error":"#REF!"}},{"$f":"SUM(#REF!)","v":{"$error":"#REF!"}},{"$f":"SUM(#REF!)","v":{"$error":"#REF!"}},{"$f":"SUM(#REF!)","v":{"$error":"#REF!"}},{"$f":"SUM(#REF!)","v":{"$error":"#REF!"}},{"$f":"SUM(#REF!)","v":{"$error":"#REF!"}},{"$f":"SUM(#REF!)","v":{"$error":"#REF!"}},{"$f":"SUM(#REF!)","v":{"$error":"#REF!"}},{"$f":"SUM(#REF!)","v":{"$error":"#REF!"}},{"$f":"SUM(#REF!)","v":{"$error":"#REF!"}},{"$f":"SUM(#REF!)","v":{"$error":"#REF!"}},{"$f":"SUM(#REF!)","v":{"$error":"#REF!"}},{"$f":"SUM(#REF!)","v":{"$error":"#REF!"}},{"$f":"SUM(#REF!)","v":{"$error":"#REF!"}},{"$f":"SUM(#REF!)","v":{"$error":"#REF!"}},{"$f":"SUM(#REF!)","v":{"$error":"#REF!"}},{"$f":"SUM(#REF!)","v":{"$error":"#REF!"}},{"$f":"SUM(#REF!)","v":{"$error":"#REF!"}},{"$f":"SUM(#REF!)","v":{"$error":"#REF!"}},{"$f":"SUM(#REF!)","v":{"$error":"#REF!"}},{"$f":"SUM(#REF!)","v":{"$error":"#REF!"}},{"$f":"SUM(#REF!)","v":{"$error":"#REF!"}},{"$f":"SUM(#REF!)","v":{"$error":"#REF!"}},{"$f":"SUM(#REF!)","v":{"$error":"#REF!"}},{"$f":"SUM(#REF!)","v":{"$error":"#REF!"}},{"$f":"SUM(#REF!)","v":{"$error":"#REF!"}},{"$f":"SUM(#REF!)","v":{"$error":"#REF!"}},{"$f":"SUM(#REF!)","v":{"$error":"#REF!"}},{"$f":"SUM(#REF!)","v":{"$error":"#REF!"}},{"$f":"SUM(#REF!)","v":{"$error":"#REF!"}},{"$f":"SUM(#REF!)","v":{"$error":"#REF!"}},{"$f":"SUM(#REF!)","v":{"$error":"#REF!"}},{"$f":"SUM(#REF!)","v":{"$error":"#REF!"}},{"$f":"SUM(#REF!)","v":{"$error":"#REF!"}},{"$f":"SUM(#REF!)","v":{"$error":"#REF!"}},{"$f":"SUM(#REF!)","v":{"$error":"#REF!"}},{"$f":"SUM(#REF!)","v":{"$error":"#REF!"}},{"$f":"SUM(#REF!)","v":{"$error":"#REF!"}},{"$f":"SUM(#REF!)","v":{"$error":"#REF!"}},{"$f":"SUM(#REF!)","v":{"$error":"#REF!"}},{"$f":"SUM(#REF!)","v":{"$error":"#REF!"}},{"$f":"SUM(#REF!)","v":{"$error":"#REF!"}},{"$f":"SUM(#REF!)","v":{"$error":"#REF!"}},{"$f":"SUM(#REF!)","v":{"$error":"#REF!"}},{"$f":"SUM(#REF!)","v":{"$error":"#REF!"}},{"$f":"SUM(#REF!)","v":{"$error":"#REF!"}},{"$f":"SUM(#REF!)","v":{"$error":"#REF!"}},{"$f":"SUM(#REF!)","v":{"$error":"#REF!"}},{"$f":"SUM(#REF!)","v":{"$error":"#REF!"}},{"$f":"SUM(#REF!)","v":{"$error":"#REF!"}},{"$f":"SUM(#REF!)","v":{"$error":"#REF!"}},{"$f":"SUM(#REF!)","v":{"$error":"#REF!"}},{"$f":"SUM(#REF!)","v":{"$error":"#REF!"}},{"$f":"SUM(#REF!)","v":{"$error":"#REF!"}},{"$f":"SUM(#REF!)","v":{"$error":"#REF!"}},{"$f":"SUM(#REF!)","v":{"$error":"#REF!"}},{"$f":"SUM(#REF!)","v":{"$error":"#REF!"}},{"$f":"SUM(#REF!)","v":{"$error":"#REF!"}},{"$f":"SUM(#REF!)","v":{"$error":"#REF!"}},{"$f":"SUM(#REF!)","v":{"$error":"#REF!"}},{"$f":"SUM(#REF!)","v":{"$error":"#REF!"}},{"$f":"SUM(#REF!)","v":{"$error":"#REF!"}},{"$f":"SUM(#REF!)","v":{"$error":"#REF!"}},{"$f":"SUM(#REF!)","v":{"$error":"#REF!"}},{"$f":"SUM(#REF!)","v":{"$error":"#REF!"}},{"$f":"SUM(#REF!)","v":{"$error":"#REF!"}},{"$f":"SUM(#REF!)","v":{"$error":"#REF!"}},{"$f":"SUM(#REF!)","v":{"$error":"#REF!"}},{"$f":"SUM(#REF!)","v":{"$error":"#REF!"}},{"$f":"SUM(#REF!)","v":{"$error":"#REF!"}},{"$f":"SUM(#REF!)","v":{"$error":"#REF!"}},{"$f":"SUM(#REF!)","v":{"$error":"#REF!"}},{"$f":"SUM(#REF!)","v":{"$error":"#REF!"}},{"$f":"SUM(#REF!)","v":{"$error":"#REF!"}},{"$f":"SUM(#REF!)","v":{"$error":"#REF!"}},{"$f":"SUM(#REF!)","v":{"$error":"#REF!"}},{"$f":"SUM(#REF!)","v":{"$error":"#REF!"}},{"$f":"SUM(#REF!)","v":{"$error":"#REF!"}},{"$f":"SUM(#REF!)","v":{"$error":"#REF!"}},{"$f":"SUM(#REF!)","v":{"$error":"#REF!"}},{"$f":"SUM(#REF!)","v":{"$error":"#REF!"}},{"$f":"SUM(#REF!)","v":{"$error":"#REF!"}},{"$f":"SUM(#REF!)","v":{"$error":"#REF!"}},{"$f":"SUM(#REF!)","v":{"$error":"#REF!"}},{"$f":"SUM(#REF!)","v":{"$error":"#REF!"}},{"$f":"SUM(#REF!)","v":{"$error":"#REF!"}},{"$f":"SUM(#REF!)","v":{"$error":"#REF!"}},{"$f":"SUM(#REF!)","v":{"$error":"#REF!"}},{"$f":"SUM(#REF!)","v":{"$error":"#REF!"}},{"$f":"SUM(#REF!)","v":{"$error":"#REF!"}},{"$f":"SUM(#REF!)","v":{"$error":"#REF!"}},{"$f":"SUM(#REF!)","v":{"$error":"#REF!"}},{"$f":"SUM(#REF!)","v":{"$error":"#REF!"}},{"$f":"SUM(#REF!)","v":{"$error":"#REF!"}},{"$f":"SUM(#REF!)","v":{"$error":"#REF!"}},{"$f":"SUM(#REF!)","v":{"$error":"#REF!"}},{"$f":"SUM(#REF!)","v":{"$error":"#REF!"}},{"$f":"SUM(#REF!)","v":{"$error":"#REF!"}},{"$f":"SUM(#REF!)","v":{"$error":"#REF!"}},{"$f":"SUM(#REF!)","v":{"$error":"#REF!"}},{"$f":"SUM(#REF!)","v":{"$error":"#REF!"}},{"$f":"SUM(#REF!)","v":{"$error":"#REF!"}},{"$f":"SUM(#REF!)","v":{"$error":"#REF!"}},{"$f":"SUM(#REF!)","v":{"$error":"#REF!"}},{"$f":"SUM(#REF!)","v":{"$error":"#REF!"}},{"$f":"SUM(#REF!)","v":{"$error":"#REF!"}},{"$f":"SUM(#REF!)","v":{"$error":"#REF!"}},{"$f":"SUM(#REF!)","v":{"$error":"#REF!"}},{"$f":"SUM(#REF!)","v":{"$error":"#REF!"}},{"$f":"SUM(#REF!)","v":{"$error":"#REF!"}},{"$f":"SUM(#REF!)","v":{"$error":"#REF!"}},{"$f":"SUM(#REF!)","v":{"$error":"#REF!"}},{"$f":"SUM(#REF!)","v":{"$error":"#REF!"}},{"$f":"SUM(#REF!)","v":{"$error":"#REF!"}},{"$f":"SUM(#REF!)","v":{"$error":"#REF!"}},{"$f":"SUM(#REF!)","v":{"$error":"#REF!"}},{"$f":"SUM(#REF!)","v":{"$error":"#REF!"}},{"$f":"SUM(#REF!)","v":{"$error":"#REF!"}},{"$f":"SUM(#REF!)","v":{"$error":"#REF!"}},{"$f":"SUM(#REF!)","v":{"$error":"#REF!"}},{"$f":"SUM(#REF!)","v":{"$error":"#REF!"}},{"$f":"SUM(#REF!)","v":{"$error":"#REF!"}},{"$f":"SUM(#REF!)","v":{"$error":"#REF!"}},{"$f":"SUM(#REF!)","v":{"$error":"#REF!"}},{"$f":"SUM(#REF!)","v":{"$error":"#REF!"}},{"$f":"SUM(#REF!)","v":{"$error":"#REF!"}},{"$f":"SUM(#REF!)","v":{"$error":"#REF!"}},{"$f":"SUM(#REF!)","v":{"$error":"#REF!"}},{"$f":"SUM(#REF!)","v":{"$error":"#REF!"}},{"$f":"SUM(#REF!)","v":{"$error":"#REF!"}},{"$f":"SUM(#REF!)","v":{"$error":"#REF!"}},{"$f":"SUM(#REF!)","v":{"$error":"#REF!"}},{"$f":"SUM(#REF!)","v":{"$error":"#REF!"}},{"$f":"SUM(#REF!)","v":{"$error":"#REF!"}},{"$f":"SUM(#REF!)","v":{"$error":"#REF!"}},{"$f":"SUM(#REF!)","v":{"$error":"#REF!"}},{"$f":"SUM(#REF!)","v":{"$error":"#REF!"}},{"$f":"SUM(#REF!)","v":{"$error":"#REF!"}},{"$f":"SUM(#REF!)","v":{"$error":"#REF!"}},{"$f":"SUM(#REF!)","v":{"$error":"#REF!"}},{"$f":"SUM(#REF!)","v":{"$error":"#REF!"}},{"$f":"SUM(#REF!)","v":{"$error":"#REF!"}},{"$f":"SUM(#REF!)","v":{"$error":"#REF!"}},{"$f":"SUM(#REF!)","v":{"$error":"#REF!"}},{"$f":"SUM(#REF!)","v":{"$error":"#REF!"}},{"$f":"SUM(#REF!)","v":{"$error":"#REF!"}},{"$f":"SUM(#REF!)","v":{"$error":"#REF!"}},{"$f":"SUM(#REF!)","v":{"$error":"#REF!"}},{"$f":"SUM(#REF!)","v":{"$error":"#REF!"}},{"$f":"SUM(#REF!)","v":{"$error":"#REF!"}},{"$f":"SUM(#REF!)","v":{"$error":"#REF!"}},{"$f":"SUM(#REF!)","v":{"$error":"#REF!"}},{"$f":"SUM(#REF!)","v":{"$error":"#REF!"}},{"$f":"SUM(#REF!)","v":{"$error":"#REF!"}},{"$f":"SUM(#REF!)","v":{"$error":"#REF!"}},{"$f":"SUM(#REF!)","v":{"$error":"#REF!"}},{"$f":"SUM(#REF!)","v":{"$error":"#REF!"}},{"$f":"SUM(#REF!)","v":{"$error":"#REF!"}},{"$f":"SUM(#REF!)","v":{"$error":"#REF!"}},{"$f":"SUM(#REF!)","v":{"$error":"#REF!"}},{"$f":"SUM(#REF!)","v":{"$error":"#REF!"}},{"$f":"SUM(#REF!)","v":{"$error":"#REF!"}},{"$f":"SUM(#REF!)","v":{"$error":"#REF!"}},{"$f":"SUM(#REF!)","v":{"$error":"#REF!"}},{"$f":"SUM(#REF!)","v":{"$error":"#REF!"}},{"$f":"SUM(#REF!)","v":{"$error":"#REF!"}},{"$f":"SUM(#REF!)","v":{"$error":"#REF!"}},{"$f":"SUM(#REF!)","v":{"$error":"#REF!"}},{"$f":"SUM(#REF!)","v":{"$error":"#REF!"}},{"$f":"SUM(#REF!)","v":{"$error":"#REF!"}},{"$f":"SUM(#REF!)","v":{"$error":"#REF!"}},{"$f":"SUM(#REF!)","v":{"$error":"#REF!"}},{"$f":"SUM(#REF!)","v":{"$error":"#REF!"}},{"$f":"SUM(#REF!)","v":{"$error":"#REF!"}},{"$f":"SUM(#REF!)","v":{"$error":"#REF!"}},{"$f":"SUM(#REF!)","v":{"$error":"#REF!"}},{"$f":"SUM(#REF!)","v":{"$error":"#REF!"}},{"$f":"SUM(#REF!)","v":{"$error":"#REF!"}},{"$f":"SUM(#REF!)","v":{"$error":"#REF!"}},{"$f":"SUM(#REF!)","v":{"$error":"#REF!"}},{"$f":"SUM(#REF!)","v":{"$error":"#REF!"}},{"$f":"SUM(#REF!)","v":{"$error":"#REF!"}},{"$f":"SUM(#REF!)","v":{"$error":"#REF!"}},{"$f":"SUM(#REF!)","v":{"$error":"#REF!"}},{"$f":"SUM(#REF!)","v":{"$error":"#REF!"}},{"$f":"SUM(#REF!)","v":{"$error":"#REF!"}},{"$f":"SUM(#REF!)","v":{"$error":"#REF!"}},{"$f":"SUM(#REF!)","v":{"$error":"#REF!"}},{"$f":"SUM(#REF!)","v":{"$error":"#REF!"}},{"$f":"SUM(#REF!)","v":{"$error":"#REF!"}},{"$f":"SUM(#REF!)","v":{"$error":"#REF!"}},{"$f":"SUM(#REF!)","v":{"$error":"#REF!"}},{"$f":"SUM(#REF!)","v":{"$error":"#REF!"}},{"$f":"SUM(#REF!)","v":{"$error":"#REF!"}},{"$f":"SUM(#REF!)","v":{"$error":"#REF!"}},{"$f":"SUM(#REF!)","v":{"$error":"#REF!"}},{"$f":"SUM(#REF!)","v":{"$error":"#REF!"}},{"$f":"SUM(#REF!)","v":{"$error":"#REF!"}},{"$f":"SUM(#REF!)","v":{"$error":"#REF!"}},{"$f":"SUM(#REF!)","v":{"$error":"#REF!"}},{"$f":"SUM(#REF!)","v":{"$error":"#REF!"}},{"$f":"SUM(#REF!)","v":{"$error":"#REF!"}},{"$f":"SUM(#REF!)","v":{"$error":"#REF!"}},{"$f":"SUM(#REF!)","v":{"$error":"#REF!"}},{"$f":"SUM(#REF!)","v":{"$error":"#REF!"}},{"$f":"SUM(#REF!)","v":{"$error":"#REF!"}},{"$f":"SUM(#REF!)","v":{"$error":"#REF!"}},{"$f":"SUM(#REF!)","v":{"$error":"#REF!"}},{"$f":"SUM(#REF!)","v":{"$error":"#REF!"}},{"$f":"SUM(#REF!)","v":{"$error":"#REF!"}},{"$f":"SUM(#REF!)","v":{"$error":"#REF!"}},{"$f":"SUM(#REF!)","v":{"$error":"#REF!"}},{"$f":"SUM(#REF!)","v":{"$error":"#REF!"}},{"$f":"SUM(#REF!)","v":{"$error":"#REF!"}},{"$f":"SUM(#REF!)","v":{"$error":"#REF!"}},{"$f":"SUM(#REF!)","v":{"$error":"#REF!"}},{"$f":"SUM(#REF!)","v":{"$error":"#REF!"}},{"$f":"SUM(#REF!)","v":{"$error":"#REF!"}},{"$f":"SUM(#REF!)","v":{"$error":"#REF!"}},{"$f":"SUM(#REF!)","v":{"$error":"#REF!"}},{"$f":"SUM(#REF!)","v":{"$error":"#REF!"}},{"$f":"SUM(#REF!)","v":{"$error":"#REF!"}},{"$f":"SUM(#REF!)","v":{"$error":"#REF!"}},{"$f":"SUM(#REF!)","v":{"$error":"#REF!"}},{"$f":"SUM(#REF!)","v":{"$error":"#REF!"}},{"$f":"SUM(#REF!)","v":{"$error":"#REF!"}},{"$f":"SUM(#REF!)","v":{"$error":"#REF!"}},{"$f":"SUM(#REF!)","v":{"$error":"#REF!"}},{"$f":"SUM(#REF!)","v":{"$error":"#REF!"}},{"$f":"SUM(#REF!)","v":{"$error":"#REF!"}},{"$f":"SUM(#REF!)","v":{"$error":"#REF!"}},{"$f":"SUM(#REF!)","v":{"$error":"#REF!"}},{"$f":"SUM(#REF!)","v":{"$error":"#REF!"}},{"$f":"SUM(#REF!)","v":{"$error":"#REF!"}},{"$f":"SUM(#REF!)","v":{"$error":"#REF!"}},{"$f":"SUM(#REF!)","v":{"$error":"#REF!"}},{"$f":"SUM(#REF!)","v":{"$error":"#REF!"}},{"$f":"SUM(#REF!)","v":{"$error":"#REF!"}},{"$f":"SUM(#REF!)","v":{"$error":"#REF!"}},{"$f":"SUM(#REF!)","v":{"$error":"#REF!"}},{"$f":"SUM(#REF!)","v":{"$error":"#REF!"}},{"$f":"SUM(#REF!)","v":{"$error":"#REF!"}},{"$f":"SUM(#REF!)","v":{"$error":"#REF!"}},{"$f":"SUM(#REF!)","v":{"$error":"#REF!"}},{"$f":"SUM(#REF!)","v":{"$error":"#REF!"}},{"$f":"SUM(#REF!)","v":{"$error":"#REF!"}},{"$f":"SUM(#REF!)","v":{"$error":"#REF!"}},{"$f":"SUM(#REF!)","v":{"$error":"#REF!"}},{"$f":"SUM(#REF!)","v":{"$error":"#REF!"}},{"$f":"SUM(#REF!)","v":{"$error":"#REF!"}},{"$f":"SUM(#REF!)","v":{"$error":"#REF!"}},{"$f":"SUM(#REF!)","v":{"$error":"#REF!"}},{"$f":"SUM(#REF!)","v":{"$error":"#REF!"}},{"$f":"SUM(#REF!)","v":{"$error":"#REF!"}},{"$f":"SUM(#REF!)","v":{"$error":"#REF!"}},{"$f":"SUM(#REF!)","v":{"$error":"#REF!"}},{"$f":"SUM(#REF!)","v":{"$error":"#REF!"}},{"$f":"SUM(#REF!)","v":{"$error":"#REF!"}},{"$f":"SUM(#REF!)","v":{"$error":"#REF!"}},{"$f":"SUM(#REF!)","v":{"$error":"#REF!"}},{"$f":"SUM(#REF!)","v":{"$error":"#REF!"}},{"$f":"SUM(#REF!)","v":{"$error":"#REF!"}},{"$f":"SUM(#REF!)","v":{"$error":"#REF!"}},{"$f":"SUM(#REF!)","v":{"$error":"#REF!"}},{"$f":"SUM(#REF!)","v":{"$error":"#REF!"}},{"$f":"SUM(#REF!)","v":{"$error":"#REF!"}},{"$f":"SUM(#REF!)","v":{"$error":"#REF!"}},{"$f":"SUM(#REF!)","v":{"$error":"#REF!"}},{"$f":"SUM(#REF!)","v":{"$error":"#REF!"}},{"$f":"SUM(#REF!)","v":{"$error":"#REF!"}},{"$f":"SUM(#REF!)","v":{"$error":"#REF!"}},{"$f":"SUM(#REF!)","v":{"$error":"#REF!"}},{"$f":"SUM(#REF!)","v":{"$error":"#REF!"}},{"$f":"SUM(#REF!)","v":{"$error":"#REF!"}},{"$f":"SUM(#REF!)","v":{"$error":"#REF!"}},{"$f":"SUM(#REF!)","v":{"$error":"#REF!"}},{"$f":"SUM(#REF!)","v":{"$error":"#REF!"}},{"$f":"SUM(#REF!)","v":{"$error":"#REF!"}},{"$f":"SUM(#REF!)","v":{"$error":"#REF!"}},{"$f":"SUM(#REF!)","v":{"$error":"#REF!"}},{"$f":"SUM(#REF!)","v":{"$error":"#REF!"}},{"$f":"SUM(#REF!)","v":{"$error":"#REF!"}},{"$f":"SUM(#REF!)","v":{"$error":"#REF!"}},{"$f":"SUM(#REF!)","v":{"$error":"#REF!"}},{"$f":"SUM(#REF!)","v":{"$error":"#REF!"}},{"$f":"SUM(#REF!)","v":{"$error":"#REF!"}},{"$f":"SUM(#REF!)","v":{"$error":"#REF!"}},{"$f":"SUM(#REF!)","v":{"$error":"#REF!"}},{"$f":"SUM(#REF!)","v":{"$error":"#REF!"}},{"$f":"SUM(#REF!)","v":{"$error":"#REF!"}},{"$f":"SUM(#REF!)","v":{"$error":"#REF!"}},{"$f":"SUM(#REF!)","v":{"$error":"#REF!"}},{"$f":"SUM(#REF!)","v":{"$error":"#REF!"}},{"$f":"SUM(#REF!)","v":{"$error":"#REF!"}},{"$f":"SUM(#REF!)","v":{"$error":"#REF!"}},{"$f":"SUM(#REF!)","v":{"$error":"#REF!"}},{"$f":"SUM(#REF!)","v":{"$error":"#REF!"}},{"$f":"SUM(#REF!)","v":{"$error":"#REF!"}},{"$f":"SUM(#REF!)","v":{"$error":"#REF!"}},{"$f":"SUM(#REF!)","v":{"$error":"#REF!"}},{"$f":"SUM(#REF!)","v":{"$error":"#REF!"}},{"$f":"SUM(#REF!)","v":{"$error":"#REF!"}},{"$f":"SUM(#REF!)","v":{"$error":"#REF!"}},{"$f":"SUM(#REF!)","v":{"$error":"#REF!"}},{"$f":"SUM(#REF!)","v":{"$error":"#REF!"}},{"$f":"SUM(#REF!)","v":{"$error":"#REF!"}},{"$f":"SUM(#REF!)","v":{"$error":"#REF!"}},{"$f":"SUM(#REF!)","v":{"$error":"#REF!"}},{"$f":"SUM(#REF!)","v":{"$error":"#REF!"}},{"$f":"SUM(#REF!)","v":{"$error":"#REF!"}},{"$f":"SUM(#REF!)","v":{"$error":"#REF!"}},{"$f":"SUM(#REF!)","v":{"$error":"#REF!"}},{"$f":"SUM(#REF!)","v":{"$error":"#REF!"}},{"$f":"SUM(#REF!)","v":{"$error":"#REF!"}},{"$f":"SUM(#REF!)","v":{"$error":"#REF!"}},{"$f":"SUM(#REF!)","v":{"$error":"#REF!"}},{"$f":"SUM(#REF!)","v":{"$error":"#REF!"}},{"$f":"SUM(#REF!)","v":{"$error":"#REF!"}},{"$f":"SUM(#REF!)","v":{"$error":"#REF!"}},{"$f":"SUM(#REF!)","v":{"$error":"#REF!"}},{"$f":"SUM(#REF!)","v":{"$error":"#REF!"}},{"$f":"SUM(#REF!)","v":{"$error":"#REF!"}},{"$f":"SUM(#REF!)","v":{"$error":"#REF!"}},{"$f":"SUM(#REF!)","v":{"$error":"#REF!"}},{"$f":"SUM(#REF!)","v":{"$error":"#REF!"}},{"$f":"SUM(#REF!)","v":{"$error":"#REF!"}},{"$f":"SUM(#REF!)","v":{"$error":"#REF!"}},{"$f":"SUM(#REF!)","v":{"$error":"#REF!"}},{"$f":"SUM(#REF!)","v":{"$error":"#REF!"}},{"$f":"SUM(#REF!)","v":{"$error":"#REF!"}},{"$f":"SUM(#REF!)","v":{"$error":"#REF!"}},{"$f":"SUM(#REF!)","v":{"$error":"#REF!"}},{"$f":"SUM(#REF!)","v":{"$error":"#REF!"}},{"$f":"SUM(#REF!)","v":{"$error":"#REF!"}},{"$f":"SUM(#REF!)","v":{"$error":"#REF!"}},{"$f":"SUM(#REF!)","v":{"$error":"#REF!"}},{"$f":"SUM(#REF!)","v":{"$error":"#REF!"}},{"$f":"SUM(#REF!)","v":{"$error":"#REF!"}},{"$f":"SUM(#REF!)","v":{"$error":"#REF!"}},{"$f":"SUM(#REF!)","v":{"$error":"#REF!"}},{"$f":"SUM(#REF!)","v":{"$error":"#REF!"}},{"$f":"SUM(#REF!)","v":{"$error":"#REF!"}},{"$f":"SUM(#REF!)","v":{"$error":"#REF!"}},{"$f":"SUM(#REF!)","v":{"$error":"#REF!"}},{"$f":"SUM(#REF!)","v":{"$error":"#REF!"}},{"$f":"SUM(#REF!)","v":{"$error":"#REF!"}},{"$f":"SUM(#REF!)","v":{"$error":"#REF!"}},{"$f":"SUM(#REF!)","v":{"$error":"#REF!"}},{"$f":"SUM(#REF!)","v":{"$error":"#REF!"}},{"$f":"SUM(#REF!)","v":{"$error":"#REF!"}},{"$f":"SUM(#REF!)","v":{"$error":"#REF!"}},{"$f":"SUM(#REF!)","v":{"$error":"#REF!"}},{"$f":"SUM(#REF!)","v":{"$error":"#REF!"}},{"$f":"SUM(#REF!)","v":{"$error":"#REF!"}},{"$f":"SUM(#REF!)","v":{"$error":"#REF!"}},{"$f":"SUM(#REF!)","v":{"$error":"#REF!"}},{"$f":"SUM(#REF!)","v":{"$error":"#REF!"}},{"$f":"SUM(#REF!)","v":{"$error":"#REF!"}},{"$f":"SUM(#REF!)","v":{"$error":"#REF!"}},{"$f":"SUM(#REF!)","v":{"$error":"#REF!"}},{"$f":"SUM(#REF!)","v":{"$error":"#REF!"}},{"$f":"SUM(#REF!)","v":{"$error":"#REF!"}},{"$f":"SUM(#REF!)","v":{"$error":"#REF!"}},{"$f":"SUM(#REF!)","v":{"$error":"#REF!"}},{"$f":"SUM(#REF!)","v":{"$error":"#REF!"}},{"$f":"SUM(#REF!)","v":{"$error":"#REF!"}},{"$f":"SUM(#REF!)","v":{"$error":"#REF!"}},{"$f":"SUM(#REF!)","v":{"$error":"#REF!"}},{"$f":"SUM(#REF!)","v":{"$error":"#REF!"}},{"$f":"SUM(#REF!)","v":{"$error":"#REF!"}},{"$f":"SUM(#REF!)","v":{"$error":"#REF!"}},{"$f":"SUM(#REF!)","v":{"$error":"#REF!"}},{"$f":"SUM(#REF!)","v":{"$error":"#REF!"}},{"$f":"SUM(#REF!)","v":{"$error":"#REF!"}},{"$f":"SUM(#REF!)","v":{"$error":"#REF!"}},{"$f":"SUM(#REF!)","v":{"$error":"#REF!"}},{"$f":"SUM(#REF!)","v":{"$error":"#REF!"}},{"$f":"SUM(#REF!)","v":{"$error":"#REF!"}},{"$f":"SUM(#REF!)","v":{"$error":"#REF!"}},{"$f":"SUM(#REF!)","v":{"$error":"#REF!"}},{"$f":"SUM(#REF!)","v":{"$error":"#REF!"}},{"$f":"SUM(#REF!)","v":{"$error":"#REF!"}},{"$f":"SUM(#REF!)","v":{"$error":"#REF!"}},{"$f":"SUM(#REF!)","v":{"$error":"#REF!"}},{"$f":"SUM(#REF!)","v":{"$error":"#REF!"}},{"$f":"SUM(#REF!)","v":{"$error":"#REF!"}},{"$f":"SUM(#REF!)","v":{"$error":"#REF!"}},{"$f":"SUM(#REF!)","v":{"$error":"#REF!"}},{"$f":"SUM(#REF!)","v":{"$error":"#REF!"}},{"$f":"SUM(#REF!)","v":{"$error":"#REF!"}},{"$f":"SUM(#REF!)","v":{"$error":"#REF!"}},{"$f":"SUM(#REF!)","v":{"$error":"#REF!"}},{"$f":"SUM(#REF!)","v":{"$error":"#REF!"}},{"$f":"SUM(#REF!)","v":{"$error":"#REF!"}},{"$f":"SUM(#REF!)","v":{"$error":"#REF!"}},{"$f":"SUM(#REF!)","v":{"$error":"#REF!"}},{"$f":"SUM(#REF!)","v":{"$error":"#REF!"}},{"$f":"SUM(#REF!)","v":{"$error":"#REF!"}},{"$f":"SUM(#REF!)","v":{"$error":"#REF!"}},{"$f":"SUM(#REF!)","v":{"$error":"#REF!"}},{"$f":"SUM(#REF!)","v":{"$error":"#REF!"}},{"$f":"SUM(#REF!)","v":{"$error":"#REF!"}},{"$f":"SUM(#REF!)","v":{"$error":"#REF!"}},{"$f":"SUM(#REF!)","v":{"$error":"#REF!"}},{"$f":"SUM(#REF!)","v":{"$error":"#REF!"}},{"$f":"SUM(#REF!)","v":{"$error":"#REF!"}},{"$f":"SUM(#REF!)","v":{"$error":"#REF!"}},{"$f":"SUM(#REF!)","v":{"$error":"#REF!"}},{"$f":"SUM(#REF!)","v":{"$error":"#REF!"}},{"$f":"SUM(#REF!)","v":{"$error":"#REF!"}},{"$f":"SUM(#REF!)","v":{"$error":"#REF!"}},{"$f":"SUM(#REF!)","v":{"$error":"#REF!"}},{"$f":"SUM(#REF!)","v":{"$error":"#REF!"}},{"$f":"SUM(#REF!)","v":{"$error":"#REF!"}},{"$f":"SUM(#REF!)","v":{"$error":"#REF!"}},{"$f":"SUM(#REF!)","v":{"$error":"#REF!"}},{"$f":"SUM(#REF!)","v":{"$error":"#REF!"}},{"$f":"SUM(#REF!)","v":{"$error":"#REF!"}},{"$f":"SUM(#REF!)","v":{"$error":"#REF!"}},{"$f":"SUM(#REF!)","v":{"$error":"#REF!"}},{"$f":"SUM(#REF!)","v":{"$error":"#REF!"}},{"$f":"SUM(#REF!)","v":{"$error":"#REF!"}},{"$f":"SUM(#REF!)","v":{"$error":"#REF!"}},{"$f":"SUM(#REF!)","v":{"$error":"#REF!"}},{"$f":"SUM(#REF!)","v":{"$error":"#REF!"}},{"$f":"SUM(#REF!)","v":{"$error":"#REF!"}},{"$f":"SUM(#REF!)","v":{"$error":"#REF!"}},{"$f":"SUM(#REF!)","v":{"$error":"#REF!"}},{"$f":"SUM(#REF!)","v":{"$error":"#REF!"}},{"$f":"SUM(#REF!)","v":{"$error":"#REF!"}},{"$f":"SUM(#REF!)","v":{"$error":"#REF!"}},{"$f":"SUM(#REF!)","v":{"$error":"#REF!"}},{"$f":"SUM(#REF!)","v":{"$error":"#REF!"}},{"$f":"SUM(#REF!)","v":{"$error":"#REF!"}},{"$f":"SUM(#REF!)","v":{"$error":"#REF!"}},{"$f":"SUM(#REF!)","v":{"$error":"#REF!"}},{"$f":"SUM(#REF!)","v":{"$error":"#REF!"}},{"$f":"SUM(#REF!)","v":{"$error":"#REF!"}},{"$f":"SUM(#REF!)","v":{"$error":"#REF!"}},{"$f":"SUM(#REF!)","v":{"$error":"#REF!"}},{"$f":"SUM(#REF!)","v":{"$error":"#REF!"}},{"$f":"SUM(#REF!)","v":{"$error":"#REF!"}},{"$f":"SUM(#REF!)","v":{"$error":"#REF!"}},{"$f":"SUM(#REF!)","v":{"$error":"#REF!"}},{"$f":"SUM(#REF!)","v":{"$error":"#REF!"}},{"$f":"SUM(#REF!)","v":{"$error":"#REF!"}},{"$f":"SUM(#REF!)","v":{"$error":"#REF!"}},{"$f":"SUM(#REF!)","v":{"$error":"#REF!"}},{"$f":"SUM(#REF!)","v":{"$error":"#REF!"}},{"$f":"SUM(#REF!)","v":{"$error":"#REF!"}},{"$f":"SUM(#REF!)","v":{"$error":"#REF!"}},{"$f":"SUM(#REF!)","v":{"$error":"#REF!"}},{"$f":"SUM(#REF!)","v":{"$error":"#REF!"}},{"$f":"SUM(#REF!)","v":{"$error":"#REF!"}},{"$f":"SUM(#REF!)","v":{"$error":"#REF!"}},{"$f":"SUM(#REF!)","v":{"$error":"#REF!"}},{"$f":"SUM(#REF!)","v":{"$error":"#REF!"}},{"$f":"SUM(#REF!)","v":{"$error":"#REF!"}},{"$f":"SUM(#REF!)","v":{"$error":"#REF!"}},{"$f":"SUM(#REF!)","v":{"$error":"#REF!"}},{"$f":"SUM(#REF!)","v":{"$error":"#REF!"}},{"$f":"SUM(#REF!)","v":{"$error":"#REF!"}},{"$f":"SUM(#REF!)","v":{"$error":"#REF!"}},{"$f":"SUM(#REF!)","v":{"$error":"#REF!"}},{"$f":"SUM(#REF!)","v":{"$error":"#REF!"}},{"$f":"SUM(#REF!)","v":{"$error":"#REF!"}},{"$f":"SUM(#REF!)","v":{"$error":"#REF!"}},{"$f":"SUM(#REF!)","v":{"$error":"#REF!"}},{"$f":"SUM(#REF!)","v":{"$error":"#REF!"}},{"$f":"SUM(#REF!)","v":{"$error":"#REF!"}},{"$f":"SUM(#REF!)","v":{"$error":"#REF!"}},{"$f":"SUM(#REF!)","v":{"$error":"#REF!"}},{"$f":"SUM(#REF!)","v":{"$error":"#REF!"}},{"$f":"SUM(#REF!)","v":{"$error":"#REF!"}},{"$f":"SUM(#REF!)","v":{"$error":"#REF!"}},{"$f":"SUM(#REF!)","v":{"$error":"#REF!"}},{"$f":"SUM(#REF!)","v":{"$error":"#REF!"}},{"$f":"SUM(#REF!)","v":{"$error":"#REF!"}},{"$f":"SUM(#REF!)","v":{"$error":"#REF!"}},{"$f":"SUM(#REF!)","v":{"$error":"#REF!"}},{"$f":"SUM(#REF!)","v":{"$error":"#REF!"}},{"$f":"SUM(#REF!)","v":{"$error":"#REF!"}},{"$f":"SUM(#REF!)","v":{"$error":"#REF!"}},{"$f":"SUM(#REF!)","v":{"$error":"#REF!"}},{"$f":"SUM(#REF!)","v":{"$error":"#REF!"}},{"$f":"SUM(#REF!)","v":{"$error":"#REF!"}},{"$f":"SUM(#REF!)","v":{"$error":"#REF!"}},{"$f":"SUM(#REF!)","v":{"$error":"#REF!"}},{"$f":"SUM(#REF!)","v":{"$error":"#REF!"}},{"$f":"SUM(#REF!)","v":{"$error":"#REF!"}},{"$f":"SUM(#REF!)","v":{"$error":"#REF!"}},{"$f":"SUM(#REF!)","v":{"$error":"#REF!"}},{"$f":"SUM(#REF!)","v":{"$error":"#REF!"}},{"$f":"SUM(#REF!)","v":{"$error":"#REF!"}},{"$f":"SUM(#REF!)","v":{"$error":"#REF!"}},{"$f":"SUM(#REF!)","v":{"$error":"#REF!"}},{"$f":"SUM(#REF!)","v":{"$error":"#REF!"}},{"$f":"SUM(#REF!)","v":{"$error":"#REF!"}},{"$f":"SUM(#REF!)","v":{"$error":"#REF!"}},{"$f":"SUM(#REF!)","v":{"$error":"#REF!"}},{"$f":"SUM(#REF!)","v":{"$error":"#REF!"}},{"$f":"SUM(#REF!)","v":{"$error":"#REF!"}},{"$f":"SUM(#REF!)","v":{"$error":"#REF!"}},{"$f":"SUM(#REF!)","v":{"$error":"#REF!"}},{"$f":"SUM(#REF!)","v":{"$error":"#REF!"}},{"$f":"SUM(#REF!)","v":{"$error":"#REF!"}},{"$f":"SUM(#REF!)","v":{"$error":"#REF!"}},{"$f":"SUM(#REF!)","v":{"$error":"#REF!"}},{"$f":"SUM(#REF!)","v":{"$error":"#REF!"}},{"$f":"SUM(#REF!)","v":{"$error":"#REF!"}},{"$f":"SUM(#REF!)","v":{"$error":"#REF!"}},{"$f":"SUM(#REF!)","v":{"$error":"#REF!"}},{"$f":"SUM(#REF!)","v":{"$error":"#REF!"}},{"$f":"SUM(#REF!)","v":{"$error":"#REF!"}},{"$f":"SUM(#REF!)","v":{"$error":"#REF!"}},{"$f":"SUM(#REF!)","v":{"$error":"#REF!"}},{"$f":"SUM(#REF!)","v":{"$error":"#REF!"}},{"$f":"SUM(#REF!)","v":{"$error":"#REF!"}},{"$f":"SUM(#REF!)","v":{"$error":"#REF!"}},{"$f":"SUM(#REF!)","v":{"$error":"#REF!"}},{"$f":"SUM(#REF!)","v":{"$error":"#REF!"}},{"$f":"SUM(#REF!)","v":{"$error":"#REF!"}},{"$f":"SUM(#REF!)","v":{"$error":"#REF!"}},{"$f":"SUM(#REF!)","v":{"$error":"#REF!"}},{"$f":"SUM(#REF!)","v":{"$error":"#REF!"}},{"$f":"SUM(#REF!)","v":{"$error":"#REF!"}},{"$f":"SUM(#REF!)","v":{"$error":"#REF!"}},{"$f":"SUM(#REF!)","v":{"$error":"#REF!"}},{"$f":"SUM(#REF!)","v":{"$error":"#REF!"}},{"$f":"SUM(#REF!)","v":{"$error":"#REF!"}},{"$f":"SUM(#REF!)","v":{"$error":"#REF!"}},{"$f":"SUM(#REF!)","v":{"$error":"#REF!"}},{"$f":"SUM(#REF!)","v":{"$error":"#REF!"}},{"$f":"SUM(#REF!)","v":{"$error":"#REF!"}},{"$f":"SUM(#REF!)","v":{"$error":"#REF!"}},{"$f":"SUM(#REF!)","v":{"$error":"#REF!"}},{"$f":"SUM(#REF!)","v":{"$error":"#REF!"}},{"$f":"SUM(#REF!)","v":{"$error":"#REF!"}},{"$f":"SUM(#REF!)","v":{"$error":"#REF!"}},{"$f":"SUM(#REF!)","v":{"$error":"#REF!"}},{"$f":"SUM(#REF!)","v":{"$error":"#REF!"}},{"$f":"SUM(#REF!)","v":{"$error":"#REF!"}},{"$f":"SUM(#REF!)","v":{"$error":"#REF!"}},{"$f":"SUM(#REF!)","v":{"$error":"#REF!"}},{"$f":"SUM(#REF!)","v":{"$error":"#REF!"}},{"$f":"SUM(#REF!)","v":{"$error":"#REF!"}},{"$f":"SUM(#REF!)","v":{"$error":"#REF!"}},{"$f":"SUM(#REF!)","v":{"$error":"#REF!"}},{"$f":"SUM(#REF!)","v":{"$error":"#REF!"}},{"$f":"SUM(#REF!)","v":{"$error":"#REF!"}},{"$f":"SUM(#REF!)","v":{"$error":"#REF!"}},{"$f":"SUM(#REF!)","v":{"$error":"#REF!"}},{"$f":"SUM(#REF!)","v":{"$error":"#REF!"}},{"$f":"SUM(#REF!)","v":{"$error":"#REF!"}},{"$f":"SUM(#REF!)","v":{"$error":"#REF!"}},{"$f":"SUM(#REF!)","v":{"$error":"#REF!"}},{"$f":"SUM(#REF!)","v":{"$error":"#REF!"}},{"$f":"SUM(#REF!)","v":{"$error":"#REF!"}},{"$f":"SUM(#REF!)","v":{"$error":"#REF!"}},{"$f":"SUM(#REF!)","v":{"$error":"#REF!"}},{"$f":"SUM(#REF!)","v":{"$error":"#REF!"}},{"$f":"SUM(#REF!)","v":{"$error":"#REF!"}},{"$f":"SUM(#REF!)","v":{"$error":"#REF!"}},{"$f":"SUM(#REF!)","v":{"$error":"#REF!"}},{"$f":"SUM(#REF!)","v":{"$error":"#REF!"}},{"$f":"SUM(#REF!)","v":{"$error":"#REF!"}},{"$f":"SUM(#REF!)","v":{"$error":"#REF!"}},{"$f":"SUM(#REF!)","v":{"$error":"#REF!"}},{"$f":"SUM(#REF!)","v":{"$error":"#REF!"}},{"$f":"SUM(#REF!)","v":{"$error":"#REF!"}},{"$f":"SUM(#REF!)","v":{"$error":"#REF!"}},{"$f":"SUM(#REF!)","v":{"$error":"#REF!"}},{"$f":"SUM(#REF!)","v":{"$error":"#REF!"}},{"$f":"SUM(#REF!)","v":{"$error":"#REF!"}},{"$f":"SUM(#REF!)","v":{"$error":"#REF!"}},{"$f":"SUM(#REF!)","v":{"$error":"#REF!"}},{"$f":"SUM(#REF!)","v":{"$error":"#REF!"}},{"$f":"SUM(#REF!)","v":{"$error":"#REF!"}},{"$f":"SUM(#REF!)","v":{"$error":"#REF!"}},{"$f":"SUM(#REF!)","v":{"$error":"#REF!"}},{"$f":"SUM(#REF!)","v":{"$error":"#REF!"}},{"$f":"SUM(#REF!)","v":{"$error":"#REF!"}},{"$f":"SUM(#REF!)","v":{"$error":"#REF!"}},{"$f":"SUM(#REF!)","v":{"$error":"#REF!"}},{"$f":"SUM(#REF!)","v":{"$error":"#REF!"}},{"$f":"SUM(#REF!)","v":{"$error":"#REF!"}},{"$f":"SUM(#REF!)","v":{"$error":"#REF!"}},{"$f":"SUM(#REF!)","v":{"$error":"#REF!"}},{"$f":"SUM(#REF!)","v":{"$error":"#REF!"}},{"$f":"SUM(#REF!)","v":{"$error":"#REF!"}},{"$f":"SUM(#REF!)","v":{"$error":"#REF!"}},{"$f":"SUM(#REF!)","v":{"$error":"#REF!"}},{"$f":"SUM(#REF!)","v":{"$error":"#REF!"}},{"$f":"SUM(#REF!)","v":{"$error":"#REF!"}},{"$f":"SUM(#REF!)","v":{"$error":"#REF!"}},{"$f":"SUM(#REF!)","v":{"$error":"#REF!"}},{"$f":"SUM(#REF!)","v":{"$error":"#REF!"}},{"$f":"SUM(#REF!)","v":{"$error":"#REF!"}},{"$f":"SUM(#REF!)","v":{"$error":"#REF!"}},{"$f":"SUM(#REF!)","v":{"$error":"#REF!"}},{"$f":"SUM(#REF!)","v":{"$error":"#REF!"}},{"$f":"SUM(#REF!)","v":{"$error":"#REF!"}},{"$f":"SUM(#REF!)","v":{"$error":"#REF!"}},{"$f":"SUM(#REF!)","v":{"$error":"#REF!"}},{"$f":"SUM(#REF!)","v":{"$error":"#REF!"}},{"$f":"SUM(#REF!)","v":{"$error":"#REF!"}},{"$f":"SUM(#REF!)","v":{"$error":"#REF!"}},{"$f":"SUM(#REF!)","v":{"$error":"#REF!"}},{"$f":"SUM(#REF!)","v":{"$error":"#REF!"}},{"$f":"SUM(#REF!)","v":{"$error":"#REF!"}},{"$f":"SUM(#REF!)","v":{"$error":"#REF!"}},{"$f":"SUM(#REF!)","v":{"$error":"#REF!"}},{"$f":"SUM(#REF!)","v":{"$error":"#REF!"}},{"$f":"SUM(#REF!)","v":{"$error":"#REF!"}},{"$f":"SUM(#REF!)","v":{"$error":"#REF!"}},{"$f":"SUM(#REF!)","v":{"$error":"#REF!"}},{"$f":"SUM(#REF!)","v":{"$error":"#REF!"}},{"$f":"SUM(#REF!)","v":{"$error":"#REF!"}},{"$f":"SUM(#REF!)","v":{"$error":"#REF!"}},{"$f":"SUM(#REF!)","v":{"$error":"#REF!"}},{"$f":"SUM(#REF!)","v":{"$error":"#REF!"}},{"$f":"SUM(#REF!)","v":{"$error":"#REF!"}},{"$f":"SUM(#REF!)","v":{"$error":"#REF!"}},{"$f":"SUM(#REF!)","v":{"$error":"#REF!"}},{"$f":"SUM(#REF!)","v":{"$error":"#REF!"}},{"$f":"SUM(#REF!)","v":{"$error":"#REF!"}},{"$f":"SUM(#REF!)","v":{"$error":"#REF!"}},{"$f":"SUM(#REF!)","v":{"$error":"#REF!"}},{"$f":"SUM(#REF!)","v":{"$error":"#REF!"}},{"$f":"SUM(#REF!)","v":{"$error":"#REF!"}},{"$f":"SUM(#REF!)","v":{"$error":"#REF!"}},{"$f":"SUM(#REF!)","v":{"$error":"#REF!"}},{"$f":"SUM(#REF!)","v":{"$error":"#REF!"}},{"$f":"SUM(#REF!)","v":{"$error":"#REF!"}},{"$f":"SUM(#REF!)","v":{"$error":"#REF!"}},{"$f":"SUM(#REF!)","v":{"$error":"#REF!"}},{"$f":"SUM(#REF!)","v":{"$error":"#REF!"}},{"$f":"SUM(#REF!)","v":{"$error":"#REF!"}},{"$f":"SUM(#REF!)","v":{"$error":"#REF!"}},{"$f":"SUM(#REF!)","v":{"$error":"#REF!"}},{"$f":"SUM(#REF!)","v":{"$error":"#REF!"}},{"$f":"SUM(#REF!)","v":{"$error":"#REF!"}},{"$f":"SUM(#REF!)","v":{"$error":"#REF!"}},{"$f":"SUM(#REF!)","v":{"$error":"#REF!"}},{"$f":"SUM(#REF!)","v":{"$error":"#REF!"}},{"$f":"SUM(#REF!)","v":{"$error":"#REF!"}},{"$f":"SUM(#REF!)","v":{"$error":"#REF!"}},{"$f":"SUM(#REF!)","v":{"$error":"#REF!"}},{"$f":"SUM(#REF!)","v":{"$error":"#REF!"}},{"$f":"SUM(#REF!)","v":{"$error":"#REF!"}},{"$f":"SUM(#REF!)","v":{"$error":"#REF!"}},{"$f":"SUM(#REF!)","v":{"$error":"#REF!"}},{"$f":"SUM(#REF!)","v":{"$error":"#REF!"}},{"$f":"SUM(#REF!)","v":{"$error":"#REF!"}},{"$f":"SUM(#REF!)","v":{"$error":"#REF!"}},{"$f":"SUM(#REF!)","v":{"$error":"#REF!"}},{"$f":"SUM(#REF!)","v":{"$error":"#REF!"}},{"$f":"SUM(#REF!)","v":{"$error":"#REF!"}},{"$f":"SUM(#REF!)","v":{"$error":"#REF!"}},{"$f":"SUM(#REF!)","v":{"$error":"#REF!"}},{"$f":"SUM(#REF!)","v":{"$error":"#REF!"}},{"$f":"SUM(#REF!)","v":{"$error":"#REF!"}},{"$f":"SUM(#REF!)","v":{"$error":"#REF!"}},{"$f":"SUM(#REF!)","v":{"$error":"#REF!"}},{"$f":"SUM(#REF!)","v":{"$error":"#REF!"}},{"$f":"SUM(#REF!)","v":{"$error":"#REF!"}},{"$f":"SUM(#REF!)","v":{"$error":"#REF!"}},{"$f":"SUM(#REF!)","v":{"$error":"#REF!"}},{"$f":"SUM(#REF!)","v":{"$error":"#REF!"}},{"$f":"SUM(#REF!)","v":{"$error":"#REF!"}},{"$f":"SUM(#REF!)","v":{"$error":"#REF!"}},{"$f":"SUM(#REF!)","v":{"$error":"#REF!"}},{"$f":"SUM(#REF!)","v":{"$error":"#REF!"}},{"$f":"SUM(#REF!)","v":{"$error":"#REF!"}},{"$f":"SUM(#REF!)","v":{"$error":"#REF!"}},{"$f":"SUM(#REF!)","v":{"$error":"#REF!"}},{"$f":"SUM(#REF!)","v":{"$error":"#REF!"}},{"$f":"SUM(#REF!)","v":{"$error":"#REF!"}},{"$f":"SUM(#REF!)","v":{"$error":"#REF!"}},{"$f":"SUM(#REF!)","v":{"$error":"#REF!"}},{"$f":"SUM(#REF!)","v":{"$error":"#REF!"}},{"$f":"SUM(#REF!)","v":{"$error":"#REF!"}},{"$f":"SUM(#REF!)","v":{"$error":"#REF!"}},{"$f":"SUM(#REF!)","v":{"$error":"#REF!"}},{"$f":"SUM(#REF!)","v":{"$error":"#REF!"}},{"$f":"SUM(#REF!)","v":{"$error":"#REF!"}},{"$f":"SUM(#REF!)","v":{"$error":"#REF!"}},{"$f":"SUM(#REF!)","v":{"$error":"#REF!"}},{"$f":"SUM(#REF!)","v":{"$error":"#REF!"}},{"$f":"SUM(#REF!)","v":{"$error":"#REF!"}},{"$f":"SUM(#REF!)","v":{"$error":"#REF!"}},{"$f":"SUM(#REF!)","v":{"$error":"#REF!"}},{"$f":"SUM(#REF!)","v":{"$error":"#REF!"}},{"$f":"SUM(#REF!)","v":{"$error":"#REF!"}},{"$f":"SUM(#REF!)","v":{"$error":"#REF!"}},{"$f":"SUM(#REF!)","v":{"$error":"#REF!"}},{"$f":"SUM(#REF!)","v":{"$error":"#REF!"}},{"$f":"SUM(#REF!)","v":{"$error":"#REF!"}},{"$f":"SUM(#REF!)","v":{"$error":"#REF!"}},{"$f":"SUM(#REF!)","v":{"$error":"#REF!"}},{"$f":"SUM(#REF!)","v":{"$error":"#REF!"}},{"$f":"SUM(#REF!)","v":{"$error":"#REF!"}},{"$f":"SUM(#REF!)","v":{"$error":"#REF!"}},{"$f":"SUM(#REF!)","v":{"$error":"#REF!"}},{"$f":"SUM(#REF!)","v":{"$error":"#REF!"}},{"$f":"SUM(#REF!)","v":{"$error":"#REF!"}},{"$f":"SUM(#REF!)","v":{"$error":"#REF!"}},{"$f":"SUM(#REF!)","v":{"$error":"#REF!"}},{"$f":"SUM(#REF!)","v":{"$error":"#REF!"}},{"$f":"SUM(#REF!)","v":{"$error":"#REF!"}},{"$f":"SUM(#REF!)","v":{"$error":"#REF!"}},{"$f":"SUM(#REF!)","v":{"$error":"#REF!"}},{"$f":"SUM(#REF!)","v":{"$error":"#REF!"}},{"$f":"SUM(#REF!)","v":{"$error":"#REF!"}},{"$f":"SUM(#REF!)","v":{"$error":"#REF!"}},{"$f":"SUM(#REF!)","v":{"$error":"#REF!"}},{"$f":"SUM(#REF!)","v":{"$error":"#REF!"}},{"$f":"SUM(#REF!)","v":{"$error":"#REF!"}},{"$f":"SUM(#REF!)","v":{"$error":"#REF!"}},{"$f":"SUM(#REF!)","v":{"$error":"#REF!"}},{"$f":"SUM(#REF!)","v":{"$error":"#REF!"}},{"$f":"SUM(#REF!)","v":{"$error":"#REF!"}},{"$f":"SUM(#REF!)","v":{"$error":"#REF!"}},{"$f":"SUM(#REF!)","v":{"$error":"#REF!"}},{"$f":"SUM(#REF!)","v":{"$error":"#REF!"}},{"$f":"SUM(#REF!)","v":{"$error":"#REF!"}},{"$f":"SUM(#REF!)","v":{"$error":"#REF!"}},{"$f":"SUM(#REF!)","v":{"$error":"#REF!"}},{"$f":"SUM(#REF!)","v":{"$error":"#REF!"}},{"$f":"SUM(#REF!)","v":{"$error":"#REF!"}},{"$f":"SUM(#REF!)","v":{"$error":"#REF!"}},{"$f":"SUM(#REF!)","v":{"$error":"#REF!"}},{"$f":"SUM(#REF!)","v":{"$error":"#REF!"}},{"$f":"SUM(#REF!)","v":{"$error":"#REF!"}},{"$f":"SUM(#REF!)","v":{"$error":"#REF!"}},{"$f":"SUM(#REF!)","v":{"$error":"#REF!"}},{"$f":"SUM(#REF!)","v":{"$error":"#REF!"}},{"$f":"SUM(#REF!)","v":{"$error":"#REF!"}},{"$f":"SUM(#REF!)","v":{"$error":"#REF!"}},{"$f":"SUM(#REF!)","v":{"$error":"#REF!"}},{"$f":"SUM(#REF!)","v":{"$error":"#REF!"}},{"$f":"SUM(#REF!)","v":{"$error":"#REF!"}},{"$f":"SUM(#REF!)","v":{"$error":"#REF!"}},{"$f":"SUM(#REF!)","v":{"$error":"#REF!"}},{"$f":"SUM(#REF!)","v":{"$error":"#REF!"}},{"$f":"SUM(#REF!)","v":{"$error":"#REF!"}},{"$f":"SUM(#REF!)","v":{"$error":"#REF!"}},{"$f":"SUM(#REF!)","v":{"$error":"#REF!"}},{"$f":"SUM(#REF!)","v":{"$error":"#REF!"}},{"$f":"SUM(#REF!)","v":{"$error":"#REF!"}},{"$f":"SUM(#REF!)","v":{"$error":"#REF!"}},{"$f":"SUM(#REF!)","v":{"$error":"#REF!"}},{"$f":"SUM(#REF!)","v":{"$error":"#REF!"}},{"$f":"SUM(#REF!)","v":{"$error":"#REF!"}},{"$f":"SUM(#REF!)","v":{"$error":"#REF!"}},{"$f":"SUM(#REF!)","v":{"$error":"#REF!"}},{"$f":"SUM(#REF!)","v":{"$error":"#REF!"}},{"$f":"SUM(#REF!)","v":{"$error":"#REF!"}},{"$f":"SUM(#REF!)","v":{"$error":"#REF!"}},{"$f":"SUM(#REF!)","v":{"$error":"#REF!"}},{"$f":"SUM(#REF!)","v":{"$error":"#REF!"}},{"$f":"SUM(#REF!)","v":{"$error":"#REF!"}},{"$f":"SUM(#REF!)","v":{"$error":"#REF!"}},{"$f":"SUM(#REF!)","v":{"$error":"#REF!"}},{"$f":"SUM(#REF!)","v":{"$error":"#REF!"}},{"$f":"SUM(#REF!)","v":{"$error":"#REF!"}},{"$f":"SUM(#REF!)","v":{"$error":"#REF!"}},{"$f":"SUM(#REF!)","v":{"$error":"#REF!"}},{"$f":"SUM(#REF!)","v":{"$error":"#REF!"}},{"$f":"SUM(#REF!)","v":{"$error":"#REF!"}},{"$f":"SUM(#REF!)","v":{"$error":"#REF!"}},{"$f":"SUM(#REF!)","v":{"$error":"#REF!"}},{"$f":"SUM(#REF!)","v":{"$error":"#REF!"}},{"$f":"SUM(#REF!)","v":{"$error":"#REF!"}},{"$f":"SUM(#REF!)","v":{"$error":"#REF!"}},{"$f":"SUM(#REF!)","v":{"$error":"#REF!"}},{"$f":"SUM(#REF!)","v":{"$error":"#REF!"}},{"$f":"SUM(#REF!)","v":{"$error":"#REF!"}},{"$f":"SUM(#REF!)","v":{"$error":"#REF!"}},{"$f":"SUM(#REF!)","v":{"$error":"#REF!"}},{"$f":"SUM(#REF!)","v":{"$error":"#REF!"}},{"$f":"SUM(#REF!)","v":{"$error":"#REF!"}},{"$f":"SUM(#REF!)","v":{"$error":"#REF!"}},{"$f":"SUM(#REF!)","v":{"$error":"#REF!"}},{"$f":"SUM(#REF!)","v":{"$error":"#REF!"}},{"$f":"SUM(#REF!)","v":{"$error":"#REF!"}},{"$f":"SUM(#REF!)","v":{"$error":"#REF!"}},{"$f":"SUM(#REF!)","v":{"$error":"#REF!"}},{"$f":"SUM(#REF!)","v":{"$error":"#REF!"}},{"$f":"SUM(#REF!)","v":{"$error":"#REF!"}},{"$f":"SUM(#REF!)","v":{"$error":"#REF!"}},{"$f":"SUM(#REF!)","v":{"$error":"#REF!"}},{"$f":"SUM(#REF!)","v":{"$error":"#REF!"}},{"$f":"SUM(#REF!)","v":{"$error":"#REF!"}},{"$f":"SUM(#REF!)","v":{"$error":"#REF!"}},{"$f":"SUM(#REF!)","v":{"$error":"#REF!"}},{"$f":"SUM(#REF!)","v":{"$error":"#REF!"}},{"$f":"SUM(#REF!)","v":{"$error":"#REF!"}},{"$f":"SUM(#REF!)","v":{"$error":"#REF!"}},{"$f":"SUM(#REF!)","v":{"$error":"#REF!"}},{"$f":"SUM(#REF!)","v":{"$error":"#REF!"}},{"$f":"SUM(#REF!)","v":{"$error":"#REF!"}},{"$f":"SUM(#REF!)","v":{"$error":"#REF!"}},{"$f":"SUM(#REF!)","v":{"$error":"#REF!"}},{"$f":"SUM(#REF!)","v":{"$error":"#REF!"}},{"$f":"SUM(#REF!)","v":{"$error":"#REF!"}},{"$f":"SUM(#REF!)","v":{"$error":"#REF!"}},{"$f":"SUM(#REF!)","v":{"$error":"#REF!"}},{"$f":"SUM(#REF!)","v":{"$error":"#REF!"}},{"$f":"SUM(#REF!)","v":{"$error":"#REF!"}},{"$f":"SUM(#REF!)","v":{"$error":"#REF!"}},{"$f":"SUM(#REF!)","v":{"$error":"#REF!"}},{"$f":"SUM(#REF!)","v":{"$error":"#REF!"}},{"$f":"SUM(#REF!)","v":{"$error":"#REF!"}},{"$f":"SUM(#REF!)","v":{"$error":"#REF!"}},{"$f":"SUM(#REF!)","v":{"$error":"#REF!"}},{"$f":"SUM(#REF!)","v":{"$error":"#REF!"}},{"$f":"SUM(#REF!)","v":{"$error":"#REF!"}},{"$f":"SUM(#REF!)","v":{"$error":"#REF!"}},{"$f":"SUM(#REF!)","v":{"$error":"#REF!"}},{"$f":"SUM(#REF!)","v":{"$error":"#REF!"}},{"$f":"SUM(#REF!)","v":{"$error":"#REF!"}},{"$f":"SUM(#REF!)","v":{"$error":"#REF!"}},{"$f":"SUM(#REF!)","v":{"$error":"#REF!"}},{"$f":"SUM(#REF!)","v":{"$error":"#REF!"}},{"$f":"SUM(#REF!)","v":{"$error":"#REF!"}},{"$f":"SUM(#REF!)","v":{"$error":"#REF!"}},{"$f":"SUM(#REF!)","v":{"$error":"#REF!"}},{"$f":"SUM(#REF!)","v":{"$error":"#REF!"}},{"$f":"SUM(#REF!)","v":{"$error":"#REF!"}},{"$f":"SUM(#REF!)","v":{"$error":"#REF!"}},{"$f":"SUM(#REF!)","v":{"$error":"#REF!"}},{"$f":"SUM(#REF!)","v":{"$error":"#REF!"}},{"$f":"SUM(#REF!)","v":{"$error":"#REF!"}},{"$f":"SUM(#REF!)","v":{"$error":"#REF!"}},{"$f":"SUM(#REF!)","v":{"$error":"#REF!"}},{"$f":"SUM(#REF!)","v":{"$error":"#REF!"}},{"$f":"SUM(#REF!)","v":{"$error":"#REF!"}},{"$f":"SUM(#REF!)","v":{"$error":"#REF!"}},{"$f":"SUM(#REF!)","v":{"$error":"#REF!"}},{"$f":"SUM(#REF!)","v":{"$error":"#REF!"}},{"$f":"SUM(#REF!)","v":{"$error":"#REF!"}},{"$f":"SUM(#REF!)","v":{"$error":"#REF!"}},{"$f":"SUM(#REF!)","v":{"$error":"#REF!"}},{"$f":"SUM(#REF!)","v":{"$error":"#REF!"}},{"$f":"SUM(#REF!)","v":{"$error":"#REF!"}},{"$f":"SUM(#REF!)","v":{"$error":"#REF!"}},{"$f":"SUM(#REF!)","v":{"$error":"#REF!"}},{"$f":"SUM(#REF!)","v":{"$error":"#REF!"}},{"$f":"SUM(#REF!)","v":{"$error":"#REF!"}},{"$f":"SUM(#REF!)","v":{"$error":"#REF!"}},{"$f":"SUM(#REF!)","v":{"$error":"#REF!"}},{"$f":"SUM(#REF!)","v":{"$error":"#REF!"}},{"$f":"SUM(#REF!)","v":{"$error":"#REF!"}},{"$f":"SUM(#REF!)","v":{"$error":"#REF!"}},{"$f":"SUM(#REF!)","v":{"$error":"#REF!"}},{"$f":"SUM(#REF!)","v":{"$error":"#REF!"}},{"$f":"SUM(#REF!)","v":{"$error":"#REF!"}},{"$f":"SUM(#REF!)","v":{"$error":"#REF!"}},{"$f":"SUM(#REF!)","v":{"$error":"#REF!"}},{"$f":"SUM(#REF!)","v":{"$error":"#REF!"}},{"$f":"SUM(#REF!)","v":{"$error":"#REF!"}},{"$f":"SUM(#REF!)","v":{"$error":"#REF!"}},{"$f":"SUM(#REF!)","v":{"$error":"#REF!"}},{"$f":"SUM(#REF!)","v":{"$error":"#REF!"}},{"$f":"SUM(#REF!)","v":{"$error":"#REF!"}},{"$f":"SUM(#REF!)","v":{"$error":"#REF!"}},{"$f":"SUM(#REF!)","v":{"$error":"#REF!"}},{"$f":"SUM(#REF!)","v":{"$error":"#REF!"}},{"$f":"SUM(#REF!)","v":{"$error":"#REF!"}},{"$f":"SUM(#REF!)","v":{"$error":"#REF!"}},{"$f":"SUM(#REF!)","v":{"$error":"#REF!"}},{"$f":"SUM(#REF!)","v":{"$error":"#REF!"}},{"$f":"SUM(#REF!)","v":{"$error":"#REF!"}},{"$f":"SUM(#REF!)","v":{"$error":"#REF!"}},{"$f":"SUM(#REF!)","v":{"$error":"#REF!"}},{"$f":"SUM(#REF!)","v":{"$error":"#REF!"}},{"$f":"SUM(#REF!)","v":{"$error":"#REF!"}},{"$f":"SUM(#REF!)","v":{"$error":"#REF!"}},{"$f":"SUM(#REF!)","v":{"$error":"#REF!"}},{"$f":"SUM(#REF!)","v":{"$error":"#REF!"}},{"$f":"SUM(#REF!)","v":{"$error":"#REF!"}},{"$f":"SUM(#REF!)","v":{"$error":"#REF!"}},{"$f":"SUM(#REF!)","v":{"$error":"#REF!"}},{"$f":"SUM(#REF!)","v":{"$error":"#REF!"}},{"$f":"SUM(#REF!)","v":{"$error":"#REF!"}},{"$f":"SUM(#REF!)","v":{"$error":"#REF!"}},{"$f":"SUM(#REF!)","v":{"$error":"#REF!"}},{"$f":"SUM(#REF!)","v":{"$error":"#REF!"}},{"$f":"SUM(#REF!)","v":{"$error":"#REF!"}},{"$f":"SUM(#REF!)","v":{"$error":"#REF!"}},{"$f":"SUM(#REF!)","v":{"$error":"#REF!"}},{"$f":"SUM(#REF!)","v":{"$error":"#REF!"}},{"$f":"SUM(#REF!)","v":{"$error":"#REF!"}},{"$f":"SUM(#REF!)","v":{"$error":"#REF!"}},{"$f":"SUM(#REF!)","v":{"$error":"#REF!"}},{"$f":"SUM(#REF!)","v":{"$error":"#REF!"}},{"$f":"SUM(#REF!)","v":{"$error":"#REF!"}},{"$f":"SUM(#REF!)","v":{"$error":"#REF!"}},{"$f":"SUM(#REF!)","v":{"$error":"#REF!"}},{"$f":"SUM(#REF!)","v":{"$error":"#REF!"}},{"$f":"SUM(#REF!)","v":{"$error":"#REF!"}},{"$f":"SUM(#REF!)","v":{"$error":"#REF!"}},{"$f":"SUM(#REF!)","v":{"$error":"#REF!"}},{"$f":"SUM(#REF!)","v":{"$error":"#REF!"}},{"$f":"SUM(#REF!)","v":{"$error":"#REF!"}},{"$f":"SUM(#REF!)","v":{"$error":"#REF!"}},{"$f":"SUM(#REF!)","v":{"$error":"#REF!"}},{"$f":"SUM(#REF!)","v":{"$error":"#REF!"}},{"$f":"SUM(#REF!)","v":{"$error":"#REF!"}},{"$f":"SUM(#REF!)","v":{"$error":"#REF!"}},{"$f":"SUM(#REF!)","v":{"$error":"#REF!"}},{"$f":"SUM(#REF!)","v":{"$error":"#REF!"}},{"$f":"SUM(#REF!)","v":{"$error":"#REF!"}},{"$f":"SUM(#REF!)","v":{"$error":"#REF!"}},{"$f":"SUM(#REF!)","v":{"$error":"#REF!"}},{"$f":"SUM(#REF!)","v":{"$error":"#REF!"}},{"$f":"SUM(#REF!)","v":{"$error":"#REF!"}},{"$f":"SUM(#REF!)","v":{"$error":"#REF!"}},{"$f":"SUM(#REF!)","v":{"$error":"#REF!"}},{"$f":"SUM(#REF!)","v":{"$error":"#REF!"}},{"$f":"SUM(#REF!)","v":{"$error":"#REF!"}},{"$f":"SUM(#REF!)","v":{"$error":"#REF!"}},{"$f":"SUM(#REF!)","v":{"$error":"#REF!"}},{"$f":"SUM(#REF!)","v":{"$error":"#REF!"}},{"$f":"SUM(#REF!)","v":{"$error":"#REF!"}},{"$f":"SUM(#REF!)","v":{"$error":"#REF!"}},{"$f":"SUM(#REF!)","v":{"$error":"#REF!"}},{"$f":"SUM(#REF!)","v":{"$error":"#REF!"}},{"$f":"SUM(#REF!)","v":{"$error":"#REF!"}},{"$f":"SUM(#REF!)","v":{"$error":"#REF!"}},{"$f":"SUM(#REF!)","v":{"$error":"#REF!"}},{"$f":"SUM(#REF!)","v":{"$error":"#REF!"}},{"$f":"SUM(#REF!)","v":{"$error":"#REF!"}},{"$f":"SUM(#REF!)","v":{"$error":"#REF!"}},{"$f":"SUM(#REF!)","v":{"$error":"#REF!"}},{"$f":"SUM(#REF!)","v":{"$error":"#REF!"}},{"$f":"SUM(#REF!)","v":{"$error":"#REF!"}},{"$f":"SUM(#REF!)","v":{"$error":"#REF!"}},{"$f":"SUM(#REF!)","v":{"$error":"#REF!"}},{"$f":"SUM(#REF!)","v":{"$error":"#REF!"}},{"$f":"SUM(#REF!)","v":{"$error":"#REF!"}},{"$f":"SUM(#REF!)","v":{"$error":"#REF!"}},{"$f":"SUM(#REF!)","v":{"$error":"#REF!"}},{"$f":"SUM(#REF!)","v":{"$error":"#REF!"}},{"$f":"SUM(#REF!)","v":{"$error":"#REF!"}},{"$f":"SUM(#REF!)","v":{"$error":"#REF!"}},{"$f":"SUM(#REF!)","v":{"$error":"#REF!"}},{"$f":"SUM(#REF!)","v":{"$error":"#REF!"}},{"$f":"SUM(#REF!)","v":{"$error":"#REF!"}},{"$f":"SUM(#REF!)","v":{"$error":"#REF!"}},{"$f":"SUM(#REF!)","v":{"$error":"#REF!"}},{"$f":"SUM(#REF!)","v":{"$error":"#REF!"}},{"$f":"SUM(#REF!)","v":{"$error":"#REF!"}},{"$f":"SUM(#REF!)","v":{"$error":"#REF!"}},{"$f":"SUM(#REF!)","v":{"$error":"#REF!"}},{"$f":"SUM(#REF!)","v":{"$error":"#REF!"}},{"$f":"SUM(#REF!)","v":{"$error":"#REF!"}},{"$f":"SUM(#REF!)","v":{"$error":"#REF!"}},{"$f":"SUM(#REF!)","v":{"$error":"#REF!"}},{"$f":"SUM(#REF!)","v":{"$error":"#REF!"}},{"$f":"SUM(#REF!)","v":{"$error":"#REF!"}},{"$f":"SUM(#REF!)","v":{"$error":"#REF!"}},{"$f":"SUM(#REF!)","v":{"$error":"#REF!"}},{"$f":"SUM(#REF!)","v":{"$error":"#REF!"}},{"$f":"SUM(#REF!)","v":{"$error":"#REF!"}},{"$f":"SUM(#REF!)","v":{"$error":"#REF!"}},{"$f":"SUM(#REF!)","v":{"$error":"#REF!"}},{"$f":"SUM(#REF!)","v":{"$error":"#REF!"}},{"$f":"SUM(#REF!)","v":{"$error":"#REF!"}},{"$f":"SUM(#REF!)","v":{"$error":"#REF!"}},{"$f":"SUM(#REF!)","v":{"$error":"#REF!"}},{"$f":"SUM(#REF!)","v":{"$error":"#REF!"}},{"$f":"SUM(#REF!)","v":{"$error":"#REF!"}},{"$f":"SUM(#REF!)","v":{"$error":"#REF!"}},{"$f":"SUM(#REF!)","v":{"$error":"#REF!"}},{"$f":"SUM(#REF!)","v":{"$error":"#REF!"}},{"$f":"SUM(#REF!)","v":{"$error":"#REF!"}},{"$f":"SUM(#REF!)","v":{"$error":"#REF!"}},{"$f":"SUM(#REF!)","v":{"$error":"#REF!"}},{"$f":"SUM(#REF!)","v":{"$error":"#REF!"}},{"$f":"SUM(#REF!)","v":{"$error":"#REF!"}},{"$f":"SUM(#REF!)","v":{"$error":"#REF!"}},{"$f":"SUM(#REF!)","v":{"$error":"#REF!"}},{"$f":"SUM(#REF!)","v":{"$error":"#REF!"}},{"$f":"SUM(#REF!)","v":{"$error":"#REF!"}},{"$f":"SUM(#REF!)","v":{"$error":"#REF!"}},{"$f":"SUM(#REF!)","v":{"$error":"#REF!"}},{"$f":"SUM(#REF!)","v":{"$error":"#REF!"}},{"$f":"SUM(#REF!)","v":{"$error":"#REF!"}},{"$f":"SUM(#REF!)","v":{"$error":"#REF!"}},{"$f":"SUM(#REF!)","v":{"$error":"#REF!"}},{"$f":"SUM(#REF!)","v":{"$error":"#REF!"}},{"$f":"SUM(#REF!)","v":{"$error":"#REF!"}},{"$f":"SUM(#REF!)","v":{"$error":"#REF!"}},{"$f":"SUM(#REF!)","v":{"$error":"#REF!"}},{"$f":"SUM(#REF!)","v":{"$error":"#REF!"}},{"$f":"SUM(#REF!)","v":{"$error":"#REF!"}},{"$f":"SUM(#REF!)","v":{"$error":"#REF!"}},{"$f":"SUM(#REF!)","v":{"$error":"#REF!"}},{"$f":"SUM(#REF!)","v":{"$error":"#REF!"}},{"$f":"SUM(#REF!)","v":{"$error":"#REF!"}},{"$f":"SUM(#REF!)","v":{"$error":"#REF!"}},{"$f":"SUM(#REF!)","v":{"$error":"#REF!"}},{"$f":"SUM(#REF!)","v":{"$error":"#REF!"}},{"$f":"SUM(#REF!)","v":{"$error":"#REF!"}},{"$f":"SUM(#REF!)","v":{"$error":"#REF!"}},{"$f":"SUM(#REF!)","v":{"$error":"#REF!"}},{"$f":"SUM(#REF!)","v":{"$error":"#REF!"}},{"$f":"SUM(#REF!)","v":{"$error":"#REF!"}},{"$f":"SUM(#REF!)","v":{"$error":"#REF!"}},{"$f":"SUM(#REF!)","v":{"$error":"#REF!"}},{"$f":"SUM(#REF!)","v":{"$error":"#REF!"}},{"$f":"SUM(#REF!)","v":{"$error":"#REF!"}},{"$f":"SUM(#REF!)","v":{"$error":"#REF!"}},{"$f":"SUM(#REF!)","v":{"$error":"#REF!"}},{"$f":"SUM(#REF!)","v":{"$error":"#REF!"}},{"$f":"SUM(#REF!)","v":{"$error":"#REF!"}},{"$f":"SUM(#REF!)","v":{"$error":"#REF!"}},{"$f":"SUM(#REF!)","v":{"$error":"#REF!"}},{"$f":"SUM(#REF!)","v":{"$error":"#REF!"}},{"$f":"SUM(#REF!)","v":{"$error":"#REF!"}},{"$f":"SUM(#REF!)","v":{"$error":"#REF!"}},{"$f":"SUM(#REF!)","v":{"$error":"#REF!"}},{"$f":"SUM(#REF!)","v":{"$error":"#REF!"}},{"$f":"SUM(#REF!)","v":{"$error":"#REF!"}},{"$f":"SUM(#REF!)","v":{"$error":"#REF!"}},{"$f":"SUM(#REF!)","v":{"$error":"#REF!"}},{"$f":"SUM(#REF!)","v":{"$error":"#REF!"}},{"$f":"SUM(#REF!)","v":{"$error":"#REF!"}},{"$f":"SUM(#REF!)","v":{"$error":"#REF!"}},{"$f":"SUM(#REF!)","v":{"$error":"#REF!"}},{"$f":"SUM(#REF!)","v":{"$error":"#REF!"}},{"$f":"SUM(#REF!)","v":{"$error":"#REF!"}},{"$f":"SUM(#REF!)","v":{"$error":"#REF!"}},{"$f":"SUM(#REF!)","v":{"$error":"#REF!"}},{"$f":"SUM(#REF!)","v":{"$error":"#REF!"}},{"$f":"SUM(#REF!)","v":{"$error":"#REF!"}},{"$f":"SUM(#REF!)","v":{"$error":"#REF!"}},{"$f":"SUM(#REF!)","v":{"$error":"#REF!"}},{"$f":"SUM(#REF!)","v":{"$error":"#REF!"}},{"$f":"SUM(#REF!)","v":{"$error":"#REF!"}},{"$f":"SUM(#REF!)","v":{"$error":"#REF!"}},{"$f":"SUM(#REF!)","v":{"$error":"#REF!"}},{"$f":"SUM(#REF!)","v":{"$error":"#REF!"}},{"$f":"SUM(#REF!)","v":{"$error":"#REF!"}},{"$f":"SUM(#REF!)","v":{"$error":"#REF!"}},{"$f":"SUM(#REF!)","v":{"$error":"#REF!"}},{"$f":"SUM(#REF!)","v":{"$error":"#REF!"}},{"$f":"SUM(#REF!)","v":{"$error":"#REF!"}},{"$f":"SUM(#REF!)","v":{"$error":"#REF!"}},{"$f":"SUM(#REF!)","v":{"$error":"#REF!"}},{"$f":"SUM(#REF!)","v":{"$error":"#REF!"}},{"$f":"SUM(#REF!)","v":{"$error":"#REF!"}},{"$f":"SUM(#REF!)","v":{"$error":"#REF!"}},{"$f":"SUM(#REF!)","v":{"$error":"#REF!"}},{"$f":"SUM(#REF!)","v":{"$error":"#REF!"}},{"$f":"SUM(#REF!)","v":{"$error":"#REF!"}},{"$f":"SUM(#REF!)","v":{"$error":"#REF!"}},{"$f":"SUM(#REF!)","v":{"$error":"#REF!"}},{"$f":"SUM(#REF!)","v":{"$error":"#REF!"}},{"$f":"SUM(#REF!)","v":{"$error":"#REF!"}},{"$f":"SUM(#REF!)","v":{"$error":"#REF!"}},{"$f":"SUM(#REF!)","v":{"$error":"#REF!"}},{"$f":"SUM(#REF!)","v":{"$error":"#REF!"}},{"$f":"SUM(#REF!)","v":{"$error":"#REF!"}},{"$f":"SUM(#REF!)","v":{"$error":"#REF!"}},{"$f":"SUM(#REF!)","v":{"$error":"#REF!"}},{"$f":"SUM(#REF!)","v":{"$error":"#REF!"}},{"$f":"SUM(#REF!)","v":{"$error":"#REF!"}},{"$f":"SUM(#REF!)","v":{"$error":"#REF!"}},{"$f":"SUM(#REF!)","v":{"$error":"#REF!"}},{"$f":"SUM(#REF!)","v":{"$error":"#REF!"}},{"$f":"SUM(#REF!)","v":{"$error":"#REF!"}},{"$f":"SUM(#REF!)","v":{"$error":"#REF!"}},{"$f":"SUM(#REF!)","v":{"$error":"#REF!"}},{"$f":"SUM(#REF!)","v":{"$error":"#REF!"}},{"$f":"SUM(#REF!)","v":{"$error":"#REF!"}},{"$f":"SUM(#REF!)","v":{"$error":"#REF!"}},{"$f":"SUM(#REF!)","v":{"$error":"#REF!"}},{"$f":"SUM(#REF!)","v":{"$error":"#REF!"}},{"$f":"SUM(#REF!)","v":{"$error":"#REF!"}},{"$f":"SUM(#REF!)","v":{"$error":"#REF!"}},{"$f":"SUM(#REF!)","v":{"$error":"#REF!"}},{"$f":"SUM(#REF!)","v":{"$error":"#REF!"}},{"$f":"SUM(#REF!)","v":{"$error":"#REF!"}},{"$f":"SUM(#REF!)","v":{"$error":"#REF!"}},{"$f":"SUM(#REF!)","v":{"$error":"#REF!"}},{"$f":"SUM(#REF!)","v":{"$error":"#REF!"}},{"$f":"SUM(#REF!)","v":{"$error":"#REF!"}},{"$f":"SUM(#REF!)","v":{"$error":"#REF!"}},{"$f":"SUM(#REF!)","v":{"$error":"#REF!"}},{"$f":"SUM(#REF!)","v":{"$error":"#REF!"}},{"$f":"SUM(#REF!)","v":{"$error":"#REF!"}},{"$f":"SUM(#REF!)","v":{"$error":"#REF!"}},{"$f":"SUM(#REF!)","v":{"$error":"#REF!"}},{"$f":"SUM(#REF!)","v":{"$error":"#REF!"}},{"$f":"SUM(#REF!)","v":{"$error":"#REF!"}},{"$f":"SUM(#REF!)","v":{"$error":"#REF!"}},{"$f":"SUM(#REF!)","v":{"$error":"#REF!"}},{"$f":"SUM(#REF!)","v":{"$error":"#REF!"}},{"$f":"SUM(#REF!)","v":{"$error":"#REF!"}},{"$f":"SUM(#REF!)","v":{"$error":"#REF!"}},{"$f":"SUM(#REF!)","v":{"$error":"#REF!"}},{"$f":"SUM(#REF!)","v":{"$error":"#REF!"}},{"$f":"SUM(#REF!)","v":{"$error":"#REF!"}},{"$f":"SUM(#REF!)","v":{"$error":"#REF!"}},{"$f":"SUM(#REF!)","v":{"$error":"#REF!"}},{"$f":"SUM(#REF!)","v":{"$error":"#REF!"}},{"$f":"SUM(#REF!)","v":{"$error":"#REF!"}},{"$f":"SUM(#REF!)","v":{"$error":"#REF!"}},{"$f":"SUM(#REF!)","v":{"$error":"#REF!"}},{"$f":"SUM(#REF!)","v":{"$error":"#REF!"}},{"$f":"SUM(#REF!)","v":{"$error":"#REF!"}},{"$f":"SUM(#REF!)","v":{"$error":"#REF!"}},{"$f":"SUM(#REF!)","v":{"$error":"#REF!"}},{"$f":"SUM(#REF!)","v":{"$error":"#REF!"}},{"$f":"SUM(#REF!)","v":{"$error":"#REF!"}},{"$f":"SUM(#REF!)","v":{"$error":"#REF!"}},{"$f":"SUM(#REF!)","v":{"$error":"#REF!"}},{"$f":"SUM(#REF!)","v":{"$error":"#REF!"}},{"$f":"SUM(#REF!)","v":{"$error":"#REF!"}},{"$f":"SUM(#REF!)","v":{"$error":"#REF!"}},{"$f":"SUM(#REF!)","v":{"$error":"#REF!"}},{"$f":"SUM(#REF!)","v":{"$error":"#REF!"}},{"$f":"SUM(#REF!)","v":{"$error":"#REF!"}},{"$f":"SUM(#REF!)","v":{"$error":"#REF!"}},{"$f":"SUM(#REF!)","v":{"$error":"#REF!"}},{"$f":"SUM(#REF!)","v":{"$error":"#REF!"}},{"$f":"SUM(#REF!)","v":{"$error":"#REF!"}},{"$f":"SUM(#REF!)","v":{"$error":"#REF!"}},{"$f":"SUM(#REF!)","v":{"$error":"#REF!"}},{"$f":"SUM(#REF!)","v":{"$error":"#REF!"}},{"$f":"SUM(#REF!)","v":{"$error":"#REF!"}},{"$f":"SUM(#REF!)","v":{"$error":"#REF!"}},{"$f":"SUM(#REF!)","v":{"$error":"#REF!"}},{"$f":"SUM(#REF!)","v":{"$error":"#REF!"}},{"$f":"SUM(#REF!)","v":{"$error":"#REF!"}},{"$f":"SUM(#REF!)","v":{"$error":"#REF!"}},{"$f":"SUM(#REF!)","v":{"$error":"#REF!"}},{"$f":"SUM(#REF!)","v":{"$error":"#REF!"}},{"$f":"SUM(#REF!)","v":{"$error":"#REF!"}},{"$f":"SUM(#REF!)","v":{"$error":"#REF!"}},{"$f":"SUM(#REF!)","v":{"$error":"#REF!"}},{"$f":"SUM(#REF!)","v":{"$error":"#REF!"}},{"$f":"SUM(#REF!)","v":{"$error":"#REF!"}},{"$f":"SUM(#REF!)","v":{"$error":"#REF!"}},{"$f":"SUM(#REF!)","v":{"$error":"#REF!"}},{"$f":"SUM(#REF!)","v":{"$error":"#REF!"}},{"$f":"SUM(#REF!)","v":{"$error":"#REF!"}},{"$f":"SUM(#REF!)","v":{"$error":"#REF!"}},{"$f":"SUM(#REF!)","v":{"$error":"#REF!"}},{"$f":"SUM(#REF!)","v":{"$error":"#REF!"}},{"$f":"SUM(#REF!)","v":{"$error":"#REF!"}},{"$f":"SUM(#REF!)","v":{"$error":"#REF!"}},{"$f":"SUM(#REF!)","v":{"$error":"#REF!"}},{"$f":"SUM(#REF!)","v":{"$error":"#REF!"}},{"$f":"SUM(#REF!)","v":{"$error":"#REF!"}},{"$f":"SUM(#REF!)","v":{"$error":"#REF!"}},{"$f":"SUM(#REF!)","v":{"$error":"#REF!"}},{"$f":"SUM(#REF!)","v":{"$error":"#REF!"}},{"$f":"SUM(#REF!)","v":{"$error":"#REF!"}},{"$f":"SUM(#REF!)","v":{"$error":"#REF!"}},{"$f":"SUM(#REF!)","v":{"$error":"#REF!"}},{"$f":"SUM(#REF!)","v":{"$error":"#REF!"}},{"$f":"SUM(#REF!)","v":{"$error":"#REF!"}},{"$f":"SUM(#REF!)","v":{"$error":"#REF!"}},{"$f":"SUM(#REF!)","v":{"$error":"#REF!"}},{"$f":"SUM(#REF!)","v":{"$error":"#REF!"}},{"$f":"SUM(#REF!)","v":{"$error":"#REF!"}},{"$f":"SUM(#REF!)","v":{"$error":"#REF!"}},{"$f":"SUM(#REF!)","v":{"$error":"#REF!"}},{"$f":"SUM(#REF!)","v":{"$error":"#REF!"}},{"$f":"SUM(#REF!)","v":{"$error":"#REF!"}},{"$f":"SUM(#REF!)","v":{"$error":"#REF!"}},{"$f":"SUM(#REF!)","v":{"$error":"#REF!"}},{"$f":"SUM(#REF!)","v":{"$error":"#REF!"}},{"$f":"SUM(#REF!)","v":{"$error":"#REF!"}},{"$f":"SUM(#REF!)","v":{"$error":"#REF!"}},{"$f":"SUM(#REF!)","v":{"$error":"#REF!"}},{"$f":"SUM(#REF!)","v":{"$error":"#REF!"}},{"$f":"SUM(#REF!)","v":{"$error":"#REF!"}},{"$f":"SUM(#REF!)","v":{"$error":"#REF!"}},{"$f":"SUM(#REF!)","v":{"$error":"#REF!"}},{"$f":"SUM(#REF!)","v":{"$error":"#REF!"}},{"$f":"SUM(#REF!)","v":{"$error":"#REF!"}},{"$f":"SUM(#REF!)","v":{"$error":"#REF!"}},{"$f":"SUM(#REF!)","v":{"$error":"#REF!"}},{"$f":"SUM(#REF!)","v":{"$error":"#REF!"}},{"$f":"SUM(#REF!)","v":{"$error":"#REF!"}},{"$f":"SUM(#REF!)","v":{"$error":"#REF!"}},{"$f":"SUM(#REF!)","v":{"$error":"#REF!"}},{"$f":"SUM(#REF!)","v":{"$error":"#REF!"}},{"$f":"SUM(#REF!)","v":{"$error":"#REF!"}},{"$f":"SUM(#REF!)","v":{"$error":"#REF!"}},{"$f":"SUM(#REF!)","v":{"$error":"#REF!"}},{"$f":"SUM(#REF!)","v":{"$error":"#REF!"}},{"$f":"SUM(#REF!)","v":{"$error":"#REF!"}},{"$f":"SUM(#REF!)","v":{"$error":"#REF!"}},{"$f":"SUM(#REF!)","v":{"$error":"#REF!"}},{"$f":"SUM(#REF!)","v":{"$error":"#REF!"}},{"$f":"SUM(#REF!)","v":{"$error":"#REF!"}},{"$f":"SUM(#REF!)","v":{"$error":"#REF!"}},{"$f":"SUM(#REF!)","v":{"$error":"#REF!"}},{"$f":"SUM(#REF!)","v":{"$error":"#REF!"}},{"$f":"SUM(#REF!)","v":{"$error":"#REF!"}},{"$f":"SUM(#REF!)","v":{"$error":"#REF!"}},{"$f":"SUM(#REF!)","v":{"$error":"#REF!"}},{"$f":"SUM(#REF!)","v":{"$error":"#REF!"}},{"$f":"SUM(#REF!)","v":{"$error":"#REF!"}},{"$f":"SUM(#REF!)","v":{"$error":"#REF!"}},{"$f":"SUM(#REF!)","v":{"$error":"#REF!"}},{"$f":"SUM(#REF!)","v":{"$error":"#REF!"}},{"$f":"SUM(#REF!)","v":{"$error":"#REF!"}},{"$f":"SUM(#REF!)","v":{"$error":"#REF!"}},{"$f":"SUM(#REF!)","v":{"$error":"#REF!"}},{"$f":"SUM(#REF!)","v":{"$error":"#REF!"}},{"$f":"SUM(#REF!)","v":{"$error":"#REF!"}},{"$f":"SUM(#REF!)","v":{"$error":"#REF!"}},{"$f":"SUM(#REF!)","v":{"$error":"#REF!"}},{"$f":"SUM(#REF!)","v":{"$error":"#REF!"}},{"$f":"SUM(#REF!)","v":{"$error":"#REF!"}},{"$f":"SUM(#REF!)","v":{"$error":"#REF!"}},{"$f":"SUM(#REF!)","v":{"$error":"#REF!"}},{"$f":"SUM(#REF!)","v":{"$error":"#REF!"}},{"$f":"SUM(#REF!)","v":{"$error":"#REF!"}},{"$f":"SUM(#REF!)","v":{"$error":"#REF!"}},{"$f":"SUM(#REF!)","v":{"$error":"#REF!"}},{"$f":"SUM(#REF!)","v":{"$error":"#REF!"}},{"$f":"SUM(#REF!)","v":{"$error":"#REF!"}},{"$f":"SUM(#REF!)","v":{"$error":"#REF!"}},{"$f":"SUM(#REF!)","v":{"$error":"#REF!"}},{"$f":"SUM(#REF!)","v":{"$error":"#REF!"}},{"$f":"SUM(#REF!)","v":{"$error":"#REF!"}},{"$f":"SUM(#REF!)","v":{"$error":"#REF!"}},{"$f":"SUM(#REF!)","v":{"$error":"#REF!"}},{"$f":"SUM(#REF!)","v":{"$error":"#REF!"}},{"$f":"SUM(#REF!)","v":{"$error":"#REF!"}},{"$f":"SUM(#REF!)","v":{"$error":"#REF!"}},{"$f":"SUM(#REF!)","v":{"$error":"#REF!"}},{"$f":"SUM(#REF!)","v":{"$error":"#REF!"}},{"$f":"SUM(#REF!)","v":{"$error":"#REF!"}},{"$f":"SUM(#REF!)","v":{"$error":"#REF!"}},{"$f":"SUM(#REF!)","v":{"$error":"#REF!"}},{"$f":"SUM(#REF!)","v":{"$error":"#REF!"}},{"$f":"SUM(#REF!)","v":{"$error":"#REF!"}},{"$f":"SUM(#REF!)","v":{"$error":"#REF!"}},{"$f":"SUM(#REF!)","v":{"$error":"#REF!"}},{"$f":"SUM(#REF!)","v":{"$error":"#REF!"}},{"$f":"SUM(#REF!)","v":{"$error":"#REF!"}},{"$f":"SUM(#REF!)","v":{"$error":"#REF!"}},{"$f":"SUM(#REF!)","v":{"$error":"#REF!"}},{"$f":"SUM(#REF!)","v":{"$error":"#REF!"}},{"$f":"SUM(#REF!)","v":{"$error":"#REF!"}},{"$f":"SUM(#REF!)","v":{"$error":"#REF!"}},{"$f":"SUM(#REF!)","v":{"$error":"#REF!"}},{"$f":"SUM(#REF!)","v":{"$error":"#REF!"}},{"$f":"SUM(#REF!)","v":{"$error":"#REF!"}},{"$f":"SUM(#REF!)","v":{"$error":"#REF!"}},{"$f":"SUM(#REF!)","v":{"$error":"#REF!"}},{"$f":"SUM(#REF!)","v":{"$error":"#REF!"}},{"$f":"SUM(#REF!)","v":{"$error":"#REF!"}},{"$f":"SUM(#REF!)","v":{"$error":"#REF!"}},{"$f":"SUM(#REF!)","v":{"$error":"#REF!"}},{"$f":"SUM(#REF!)","v":{"$error":"#REF!"}},{"$f":"SUM(#REF!)","v":{"$error":"#REF!"}},{"$f":"SUM(#REF!)","v":{"$error":"#REF!"}},{"$f":"SUM(#REF!)","v":{"$error":"#REF!"}},{"$f":"SUM(#REF!)","v":{"$error":"#REF!"}},{"$f":"SUM(#REF!)","v":{"$error":"#REF!"}},{"$f":"SUM(#REF!)","v":{"$error":"#REF!"}},{"$f":"SUM(#REF!)","v":{"$error":"#REF!"}},{"$f":"SUM(#REF!)","v":{"$error":"#REF!"}},{"$f":"SUM(#REF!)","v":{"$error":"#REF!"}},{"$f":"SUM(#REF!)","v":{"$error":"#REF!"}},{"$f":"SUM(#REF!)","v":{"$error":"#REF!"}},{"$f":"SUM(#REF!)","v":{"$error":"#REF!"}},{"$f":"SUM(#REF!)","v":{"$error":"#REF!"}},{"$f":"SUM(#REF!)","v":{"$error":"#REF!"}},{"$f":"SUM(#REF!)","v":{"$error":"#REF!"}},{"$f":"SUM(#REF!)","v":{"$error":"#REF!"}},{"$f":"SUM(#REF!)","v":{"$error":"#REF!"}},{"$f":"SUM(#REF!)","v":{"$error":"#REF!"}},{"$f":"SUM(#REF!)","v":{"$error":"#REF!"}},{"$f":"SUM(#REF!)","v":{"$error":"#REF!"}},{"$f":"SUM(#REF!)","v":{"$error":"#REF!"}},{"$f":"SUM(#REF!)","v":{"$error":"#REF!"}},{"$f":"SUM(#REF!)","v":{"$error":"#REF!"}},{"$f":"SUM(#REF!)","v":{"$error":"#REF!"}},{"$f":"SUM(#REF!)","v":{"$error":"#REF!"}},{"$f":"SUM(#REF!)","v":{"$error":"#REF!"}},{"$f":"SUM(#REF!)","v":{"$error":"#REF!"}},{"$f":"SUM(#REF!)","v":{"$error":"#REF!"}},{"$f":"SUM(#REF!)","v":{"$error":"#REF!"}},{"$f":"SUM(#REF!)","v":{"$error":"#REF!"}},{"$f":"SUM(#REF!)","v":{"$error":"#REF!"}},{"$f":"SUM(#REF!)","v":{"$error":"#REF!"}},{"$f":"SUM(#REF!)","v":{"$error":"#REF!"}},{"$f":"SUM(#REF!)","v":{"$error":"#REF!"}},{"$f":"SUM(#REF!)","v":{"$error":"#REF!"}},{"$f":"SUM(#REF!)","v":{"$error":"#REF!"}},{"$f":"SUM(#REF!)","v":{"$error":"#REF!"}},{"$f":"SUM(#REF!)","v":{"$error":"#REF!"}},{"$f":"SUM(#REF!)","v":{"$error":"#REF!"}},{"$f":"SUM(#REF!)","v":{"$error":"#REF!"}},{"$f":"SUM(#REF!)","v":{"$error":"#REF!"}},{"$f":"SUM(#REF!)","v":{"$error":"#REF!"}},{"$f":"SUM(#REF!)","v":{"$error":"#REF!"}},{"$f":"SUM(#REF!)","v":{"$error":"#REF!"}},{"$f":"SUM(#REF!)","v":{"$error":"#REF!"}},{"$f":"SUM(#REF!)","v":{"$error":"#REF!"}},{"$f":"SUM(#REF!)","v":{"$error":"#REF!"}},{"$f":"SUM(#REF!)","v":{"$error":"#REF!"}},{"$f":"SUM(#REF!)","v":{"$error":"#REF!"}},{"$f":"SUM(#REF!)","v":{"$error":"#REF!"}},{"$f":"SUM(#REF!)","v":{"$error":"#REF!"}},{"$f":"SUM(#REF!)","v":{"$error":"#REF!"}},{"$f":"SUM(#REF!)","v":{"$error":"#REF!"}},{"$f":"SUM(#REF!)","v":{"$error":"#REF!"}},{"$f":"SUM(#REF!)","v":{"$error":"#REF!"}},{"$f":"SUM(#REF!)","v":{"$error":"#REF!"}},{"$f":"SUM(#REF!)","v":{"$error":"#REF!"}},{"$f":"SUM(#REF!)","v":{"$error":"#REF!"}},{"$f":"SUM(#REF!)","v":{"$error":"#REF!"}},{"$f":"SUM(#REF!)","v":{"$error":"#REF!"}},{"$f":"SUM(#REF!)","v":{"$error":"#REF!"}},{"$f":"SUM(#REF!)","v":{"$error":"#REF!"}},{"$f":"SUM(#REF!)","v":{"$error":"#REF!"}},{"$f":"SUM(#REF!)","v":{"$error":"#REF!"}},{"$f":"SUM(#REF!)","v":{"$error":"#REF!"}},{"$f":"SUM(#REF!)","v":{"$error":"#REF!"}},{"$f":"SUM(#REF!)","v":{"$error":"#REF!"}},{"$f":"SUM(#REF!)","v":{"$error":"#REF!"}},{"$f":"SUM(#REF!)","v":{"$error":"#REF!"}},{"$f":"SUM(#REF!)","v":{"$error":"#REF!"}},{"$f":"SUM(#REF!)","v":{"$error":"#REF!"}},{"$f":"SUM(#REF!)","v":{"$error":"#REF!"}},{"$f":"SUM(#REF!)","v":{"$error":"#REF!"}},{"$f":"SUM(#REF!)","v":{"$error":"#REF!"}},{"$f":"SUM(#REF!)","v":{"$error":"#REF!"}},{"$f":"SUM(#REF!)","v":{"$error":"#REF!"}},{"$f":"SUM(#REF!)","v":{"$error":"#REF!"}},{"$f":"SUM(#REF!)","v":{"$error":"#REF!"}},{"$f":"SUM(#REF!)","v":{"$error":"#REF!"}},{"$f":"SUM(#REF!)","v":{"$error":"#REF!"}},{"$f":"SUM(#REF!)","v":{"$error":"#REF!"}},{"$f":"SUM(#REF!)","v":{"$error":"#REF!"}},{"$f":"SUM(#REF!)","v":{"$error":"#REF!"}},{"$f":"SUM(#REF!)","v":{"$error":"#REF!"}},{"$f":"SUM(#REF!)","v":{"$error":"#REF!"}},{"$f":"SUM(#REF!)","v":{"$error":"#REF!"}},{"$f":"SUM(#REF!)","v":{"$error":"#REF!"}},{"$f":"SUM(#REF!)","v":{"$error":"#REF!"}},{"$f":"SUM(#REF!)","v":{"$error":"#REF!"}},{"$f":"SUM(#REF!)","v":{"$error":"#REF!"}},{"$f":"SUM(#REF!)","v":{"$error":"#REF!"}},{"$f":"SUM(#REF!)","v":{"$error":"#REF!"}},{"$f":"SUM(#REF!)","v":{"$error":"#REF!"}},{"$f":"SUM(#REF!)","v":{"$error":"#REF!"}},{"$f":"SUM(#REF!)","v":{"$error":"#REF!"}},{"$f":"SUM(#REF!)","v":{"$error":"#REF!"}},{"$f":"SUM(#REF!)","v":{"$error":"#REF!"}},{"$f":"SUM(#REF!)","v":{"$error":"#REF!"}},{"$f":"SUM(#REF!)","v":{"$error":"#REF!"}},{"$f":"SUM(#REF!)","v":{"$error":"#REF!"}},{"$f":"SUM(#REF!)","v":{"$error":"#REF!"}},{"$f":"SUM(#REF!)","v":{"$error":"#REF!"}},{"$f":"SUM(#REF!)","v":{"$error":"#REF!"}},{"$f":"SUM(#REF!)","v":{"$error":"#REF!"}},{"$f":"SUM(#REF!)","v":{"$error":"#REF!"}},{"$f":"SUM(#REF!)","v":{"$error":"#REF!"}},{"$f":"SUM(#REF!)","v":{"$error":"#REF!"}},{"$f":"SUM(#REF!)","v":{"$error":"#REF!"}},{"$f":"SUM(#REF!)","v":{"$error":"#REF!"}},{"$f":"SUM(#REF!)","v":{"$error":"#REF!"}},{"$f":"SUM(#REF!)","v":{"$error":"#REF!"}},{"$f":"SUM(#REF!)","v":{"$error":"#REF!"}},{"$f":"SUM(#REF!)","v":{"$error":"#REF!"}},{"$f":"SUM(#REF!)","v":{"$error":"#REF!"}},{"$f":"SUM(#REF!)","v":{"$error":"#REF!"}},{"$f":"SUM(#REF!)","v":{"$error":"#REF!"}},{"$f":"SUM(#REF!)","v":{"$error":"#REF!"}},{"$f":"SUM(#REF!)","v":{"$error":"#REF!"}},{"$f":"SUM(#REF!)","v":{"$error":"#REF!"}},{"$f":"SUM(#REF!)","v":{"$error":"#REF!"}},{"$f":"SUM(#REF!)","v":{"$error":"#REF!"}},{"$f":"SUM(#REF!)","v":{"$error":"#REF!"}},{"$f":"SUM(#REF!)","v":{"$error":"#REF!"}},{"$f":"SUM(#REF!)","v":{"$error":"#REF!"}},{"$f":"SUM(#REF!)","v":{"$error":"#REF!"}},{"$f":"SUM(#REF!)","v":{"$error":"#REF!"}},{"$f":"SUM(#REF!)","v":{"$error":"#REF!"}},{"$f":"SUM(#REF!)","v":{"$error":"#REF!"}},{"$f":"SUM(#REF!)","v":{"$error":"#REF!"}},{"$f":"SUM(#REF!)","v":{"$error":"#REF!"}},{"$f":"SUM(#REF!)","v":{"$error":"#REF!"}},{"$f":"SUM(#REF!)","v":{"$error":"#REF!"}},{"$f":"SUM(#REF!)","v":{"$error":"#REF!"}},{"$f":"SUM(#REF!)","v":{"$error":"#REF!"}},{"$f":"SUM(#REF!)","v":{"$error":"#REF!"}},{"$f":"SUM(#REF!)","v":{"$error":"#REF!"}},{"$f":"SUM(#REF!)","v":{"$error":"#REF!"}},{"$f":"SUM(#REF!)","v":{"$error":"#REF!"}},{"$f":"SUM(#REF!)","v":{"$error":"#REF!"}},{"$f":"SUM(#REF!)","v":{"$error":"#REF!"}},{"$f":"SUM(#REF!)","v":{"$error":"#REF!"}},{"$f":"SUM(#REF!)","v":{"$error":"#REF!"}},{"$f":"SUM(#REF!)","v":{"$error":"#REF!"}},{"$f":"SUM(#REF!)","v":{"$error":"#REF!"}},{"$f":"SUM(#REF!)","v":{"$error":"#REF!"}},{"$f":"SUM(#REF!)","v":{"$error":"#REF!"}},{"$f":"SUM(#REF!)","v":{"$error":"#REF!"}},{"$f":"SUM(#REF!)","v":{"$error":"#REF!"}},{"$f":"SUM(#REF!)","v":{"$error":"#REF!"}},{"$f":"SUM(#REF!)","v":{"$error":"#REF!"}},{"$f":"SUM(#REF!)","v":{"$error":"#REF!"}},{"$f":"SUM(#REF!)","v":{"$error":"#REF!"}},{"$f":"SUM(#REF!)","v":{"$error":"#REF!"}},{"$f":"SUM(#REF!)","v":{"$error":"#REF!"}},{"$f":"SUM(#REF!)","v":{"$error":"#REF!"}},{"$f":"SUM(#REF!)","v":{"$error":"#REF!"}},{"$f":"SUM(#REF!)","v":{"$error":"#REF!"}},{"$f":"SUM(#REF!)","v":{"$error":"#REF!"}},{"$f":"SUM(#REF!)","v":{"$error":"#REF!"}},{"$f":"SUM(#REF!)","v":{"$error":"#REF!"}},{"$f":"SUM(#REF!)","v":{"$error":"#REF!"}},{"$f":"SUM(#REF!)","v":{"$error":"#REF!"}},{"$f":"SUM(#REF!)","v":{"$error":"#REF!"}},{"$f":"SUM(#REF!)","v":{"$error":"#REF!"}},{"$f":"SUM(#REF!)","v":{"$error":"#REF!"}},{"$f":"SUM(#REF!)","v":{"$error":"#REF!"}},{"$f":"SUM(#REF!)","v":{"$error":"#REF!"}},{"$f":"SUM(#REF!)","v":{"$error":"#REF!"}},{"$f":"SUM(#REF!)","v":{"$error":"#REF!"}},{"$f":"SUM(#REF!)","v":{"$error":"#REF!"}},{"$f":"SUM(#REF!)","v":{"$error":"#REF!"}},{"$f":"SUM(#REF!)","v":{"$error":"#REF!"}},{"$f":"SUM(#REF!)","v":{"$error":"#REF!"}},{"$f":"SUM(#REF!)","v":{"$error":"#REF!"}},{"$f":"SUM(#REF!)","v":{"$error":"#REF!"}},{"$f":"SUM(#REF!)","v":{"$error":"#REF!"}},{"$f":"SUM(#REF!)","v":{"$error":"#REF!"}},{"$f":"SUM(#REF!)","v":{"$error":"#REF!"}},{"$f":"SUM(#REF!)","v":{"$error":"#REF!"}},{"$f":"SUM(#REF!)","v":{"$error":"#REF!"}},{"$f":"SUM(#REF!)","v":{"$error":"#REF!"}},{"$f":"SUM(#REF!)","v":{"$error":"#REF!"}},{"$f":"SUM(#REF!)","v":{"$error":"#REF!"}},{"$f":"SUM(#REF!)","v":{"$error":"#REF!"}},{"$f":"SUM(#REF!)","v":{"$error":"#REF!"}},{"$f":"SUM(#REF!)","v":{"$error":"#REF!"}},{"$f":"SUM(#REF!)","v":{"$error":"#REF!"}},{"$f":"SUM(#REF!)","v":{"$error":"#REF!"}},{"$f":"SUM(#REF!)","v":{"$error":"#REF!"}},{"$f":"SUM(#REF!)","v":{"$error":"#REF!"}},{"$f":"SUM(#REF!)","v":{"$error":"#REF!"}},{"$f":"SUM(#REF!)","v":{"$error":"#REF!"}},{"$f":"SUM(#REF!)","v":{"$error":"#REF!"}},{"$f":"SUM(#REF!)","v":{"$error":"#REF!"}},{"$f":"SUM(#REF!)","v":{"$error":"#REF!"}},{"$f":"SUM(#REF!)","v":{"$error":"#REF!"}},{"$f":"SUM(#REF!)","v":{"$error":"#REF!"}},{"$f":"SUM(#REF!)","v":{"$error":"#REF!"}},{"$f":"SUM(#REF!)","v":{"$error":"#REF!"}},{"$f":"SUM(#REF!)","v":{"$error":"#REF!"}},{"$f":"SUM(#REF!)","v":{"$error":"#REF!"}},{"$f":"SUM(#REF!)","v":{"$error":"#REF!"}},{"$f":"SUM(#REF!)","v":{"$error":"#REF!"}},{"$f":"SUM(#REF!)","v":{"$error":"#REF!"}},{"$f":"SUM(#REF!)","v":{"$error":"#REF!"}},{"$f":"SUM(#REF!)","v":{"$error":"#REF!"}},{"$f":"SUM(#REF!)","v":{"$error":"#REF!"}},{"$f":"SUM(#REF!)","v":{"$error":"#REF!"}},{"$f":"SUM(#REF!)","v":{"$error":"#REF!"}},{"$f":"SUM(#REF!)","v":{"$error":"#REF!"}},{"$f":"SUM(#REF!)","v":{"$error":"#REF!"}},{"$f":"SUM(#REF!)","v":{"$error":"#REF!"}},{"$f":"SUM(#REF!)","v":{"$error":"#REF!"}},{"$f":"SUM(#REF!)","v":{"$error":"#REF!"}},{"$f":"SUM(#REF!)","v":{"$error":"#REF!"}},{"$f":"SUM(#REF!)","v":{"$error":"#REF!"}},{"$f":"SUM(#REF!)","v":{"$error":"#REF!"}},{"$f":"SUM(#REF!)","v":{"$error":"#REF!"}},{"$f":"SUM(#REF!)","v":{"$error":"#REF!"}},{"$f":"SUM(#REF!)","v":{"$error":"#REF!"}},{"$f":"SUM(#REF!)","v":{"$error":"#REF!"}},{"$f":"SUM(#REF!)","v":{"$error":"#REF!"}},{"$f":"SUM(#REF!)","v":{"$error":"#REF!"}},{"$f":"SUM(#REF!)","v":{"$error":"#REF!"}},{"$f":"SUM(#REF!)","v":{"$error":"#REF!"}},{"$f":"SUM(#REF!)","v":{"$error":"#REF!"}},{"$f":"SUM(#REF!)","v":{"$error":"#REF!"}},{"$f":"SUM(#REF!)","v":{"$error":"#REF!"}},{"$f":"SUM(#REF!)","v":{"$error":"#REF!"}},{"$f":"SUM(#REF!)","v":{"$error":"#REF!"}},{"$f":"SUM(#REF!)","v":{"$error":"#REF!"}},{"$f":"SUM(#REF!)","v":{"$error":"#REF!"}},{"$f":"SUM(#REF!)","v":{"$error":"#REF!"}},{"$f":"SUM(#REF!)","v":{"$error":"#REF!"}},{"$f":"SUM(#REF!)","v":{"$error":"#REF!"}},{"$f":"SUM(#REF!)","v":{"$error":"#REF!"}},{"$f":"SUM(#REF!)","v":{"$error":"#REF!"}},{"$f":"SUM(#REF!)","v":{"$error":"#REF!"}},{"$f":"SUM(#REF!)","v":{"$error":"#REF!"}},{"$f":"SUM(#REF!)","v":{"$error":"#REF!"}},{"$f":"SUM(#REF!)","v":{"$error":"#REF!"}},{"$f":"SUM(#REF!)","v":{"$error":"#REF!"}},{"$f":"SUM(#REF!)","v":{"$error":"#REF!"}},{"$f":"SUM(#REF!)","v":{"$error":"#REF!"}},{"$f":"SUM(#REF!)","v":{"$error":"#REF!"}},{"$f":"SUM(#REF!)","v":{"$error":"#REF!"}},{"$f":"SUM(#REF!)","v":{"$error":"#REF!"}},{"$f":"SUM(#REF!)","v":{"$error":"#REF!"}},{"$f":"SUM(#REF!)","v":{"$error":"#REF!"}},{"$f":"SUM(#REF!)","v":{"$error":"#REF!"}},{"$f":"SUM(#REF!)","v":{"$error":"#REF!"}},{"$f":"SUM(#REF!)","v":{"$error":"#REF!"}},{"$f":"SUM(#REF!)","v":{"$error":"#REF!"}},{"$f":"SUM(#REF!)","v":{"$error":"#REF!"}},{"$f":"SUM(#REF!)","v":{"$error":"#REF!"}},{"$f":"SUM(#REF!)","v":{"$error":"#REF!"}},{"$f":"SUM(#REF!)","v":{"$error":"#REF!"}},{"$f":"SUM(#REF!)","v":{"$error":"#REF!"}},{"$f":"SUM(#REF!)","v":{"$error":"#REF!"}},{"$f":"SUM(#REF!)","v":{"$error":"#REF!"}},{"$f":"SUM(#REF!)","v":{"$error":"#REF!"}},{"$f":"SUM(#REF!)","v":{"$error":"#REF!"}},{"$f":"SUM(#REF!)","v":{"$error":"#REF!"}},{"$f":"SUM(#REF!)","v":{"$error":"#REF!"}},{"$f":"SUM(#REF!)","v":{"$error":"#REF!"}},{"$f":"SUM(#REF!)","v":{"$error":"#REF!"}},{"$f":"SUM(#REF!)","v":{"$error":"#REF!"}},{"$f":"SUM(#REF!)","v":{"$error":"#REF!"}},{"$f":"SUM(#REF!)","v":{"$error":"#REF!"}},{"$f":"SUM(#REF!)","v":{"$error":"#REF!"}},{"$f":"SUM(#REF!)","v":{"$error":"#REF!"}},{"$f":"SUM(#REF!)","v":{"$error":"#REF!"}},{"$f":"SUM(#REF!)","v":{"$error":"#REF!"}},{"$f":"SUM(#REF!)","v":{"$error":"#REF!"}},{"$f":"SUM(#REF!)","v":{"$error":"#REF!"}},{"$f":"SUM(#REF!)","v":{"$error":"#REF!"}},{"$f":"SUM(#REF!)","v":{"$error":"#REF!"}},{"$f":"SUM(#REF!)","v":{"$error":"#REF!"}},{"$f":"SUM(#REF!)","v":{"$error":"#REF!"}},{"$f":"SUM(#REF!)","v":{"$error":"#REF!"}},{"$f":"SUM(#REF!)","v":{"$error":"#REF!"}},{"$f":"SUM(#REF!)","v":{"$error":"#REF!"}},{"$f":"SUM(#REF!)","v":{"$error":"#REF!"}},{"$f":"SUM(#REF!)","v":{"$error":"#REF!"}},{"$f":"SUM(#REF!)","v":{"$error":"#REF!"}},{"$f":"SUM(#REF!)","v":{"$error":"#REF!"}},{"$f":"SUM(#REF!)","v":{"$error":"#REF!"}},{"$f":"SUM(#REF!)","v":{"$error":"#REF!"}},{"$f":"SUM(#REF!)","v":{"$error":"#REF!"}},{"$f":"SUM(#REF!)","v":{"$error":"#REF!"}},{"$f":"SUM(#REF!)","v":{"$error":"#REF!"}},{"$f":"SUM(#REF!)","v":{"$error":"#REF!"}},{"$f":"SUM(#REF!)","v":{"$error":"#REF!"}},{"$f":"SUM(#REF!)","v":{"$error":"#REF!"}},{"$f":"SUM(#REF!)","v":{"$error":"#REF!"}},{"$f":"SUM(#REF!)","v":{"$error":"#REF!"}},{"$f":"SUM(#REF!)","v":{"$error":"#REF!"}},{"$f":"SUM(#REF!)","v":{"$error":"#REF!"}},{"$f":"SUM(#REF!)","v":{"$error":"#REF!"}},{"$f":"SUM(#REF!)","v":{"$error":"#REF!"}},{"$f":"SUM(#REF!)","v":{"$error":"#REF!"}},{"$f":"SUM(#REF!)","v":{"$error":"#REF!"}},{"$f":"SUM(#REF!)","v":{"$error":"#REF!"}},{"$f":"SUM(#REF!)","v":{"$error":"#REF!"}},{"$f":"SUM(#REF!)","v":{"$error":"#REF!"}},{"$f":"SUM(#REF!)","v":{"$error":"#REF!"}},{"$f":"SUM(#REF!)","v":{"$error":"#REF!"}},{"$f":"SUM(#REF!)","v":{"$error":"#REF!"}},{"$f":"SUM(#REF!)","v":{"$error":"#REF!"}},{"$f":"SUM(#REF!)","v":{"$error":"#REF!"}},{"$f":"SUM(#REF!)","v":{"$error":"#REF!"}},{"$f":"SUM(#REF!)","v":{"$error":"#REF!"}},{"$f":"SUM(#REF!)","v":{"$error":"#REF!"}},{"$f":"SUM(#REF!)","v":{"$error":"#REF!"}},{"$f":"SUM(#REF!)","v":{"$error":"#REF!"}},{"$f":"SUM(#REF!)","v":{"$error":"#REF!"}},{"$f":"SUM(#REF!)","v":{"$error":"#REF!"}},{"$f":"SUM(#REF!)","v":{"$error":"#REF!"}},{"$f":"SUM(#REF!)","v":{"$error":"#REF!"}},{"$f":"SUM(#REF!)","v":{"$error":"#REF!"}},{"$f":"SUM(#REF!)","v":{"$error":"#REF!"}},{"$f":"SUM(#REF!)","v":{"$error":"#REF!"}},{"$f":"SUM(#REF!)","v":{"$error":"#REF!"}},{"$f":"SUM(#REF!)","v":{"$error":"#REF!"}},{"$f":"SUM(#REF!)","v":{"$error":"#REF!"}},{"$f":"SUM(#REF!)","v":{"$error":"#REF!"}},{"$f":"SUM(#REF!)","v":{"$error":"#REF!"}},{"$f":"SUM(#REF!)","v":{"$error":"#REF!"}},{"$f":"SUM(#REF!)","v":{"$error":"#REF!"}},{"$f":"SUM(#REF!)","v":{"$error":"#REF!"}},{"$f":"SUM(#REF!)","v":{"$error":"#REF!"}},{"$f":"SUM(#REF!)","v":{"$error":"#REF!"}},{"$f":"SUM(#REF!)","v":{"$error":"#REF!"}},{"$f":"SUM(#REF!)","v":{"$error":"#REF!"}},{"$f":"SUM(#REF!)","v":{"$error":"#REF!"}},{"$f":"SUM(#REF!)","v":{"$error":"#REF!"}},{"$f":"SUM(#REF!)","v":{"$error":"#REF!"}},{"$f":"SUM(#REF!)","v":{"$error":"#REF!"}},{"$f":"SUM(#REF!)","v":{"$error":"#REF!"}},{"$f":"SUM(#REF!)","v":{"$error":"#REF!"}},{"$f":"SUM(#REF!)","v":{"$error":"#REF!"}},{"$f":"SUM(#REF!)","v":{"$error":"#REF!"}},{"$f":"SUM(#REF!)","v":{"$error":"#REF!"}},{"$f":"SUM(#REF!)","v":{"$error":"#REF!"}},{"$f":"SUM(#REF!)","v":{"$error":"#REF!"}},{"$f":"SUM(#REF!)","v":{"$error":"#REF!"}},{"$f":"SUM(#REF!)","v":{"$error":"#REF!"}},{"$f":"SUM(#REF!)","v":{"$error":"#REF!"}},{"$f":"SUM(#REF!)","v":{"$error":"#REF!"}},{"$f":"SUM(#REF!)","v":{"$error":"#REF!"}},{"$f":"SUM(#REF!)","v":{"$error":"#REF!"}},{"$f":"SUM(#REF!)","v":{"$error":"#REF!"}},{"$f":"SUM(#REF!)","v":{"$error":"#REF!"}},{"$f":"SUM(#REF!)","v":{"$error":"#REF!"}},{"$f":"SUM(#REF!)","v":{"$error":"#REF!"}},{"$f":"SUM(#REF!)","v":{"$error":"#REF!"}},{"$f":"SUM(#REF!)","v":{"$error":"#REF!"}},{"$f":"SUM(#REF!)","v":{"$error":"#REF!"}},{"$f":"SUM(#REF!)","v":{"$error":"#REF!"}},{"$f":"SUM(#REF!)","v":{"$error":"#REF!"}},{"$f":"SUM(#REF!)","v":{"$error":"#REF!"}},{"$f":"SUM(#REF!)","v":{"$error":"#REF!"}},{"$f":"SUM(#REF!)","v":{"$error":"#REF!"}},{"$f":"SUM(#REF!)","v":{"$error":"#REF!"}},{"$f":"SUM(#REF!)","v":{"$error":"#REF!"}},{"$f":"SUM(#REF!)","v":{"$error":"#REF!"}},{"$f":"SUM(#REF!)","v":{"$error":"#REF!"}},{"$f":"SUM(#REF!)","v":{"$error":"#REF!"}},{"$f":"SUM(#REF!)","v":{"$error":"#REF!"}},{"$f":"SUM(#REF!)","v":{"$error":"#REF!"}},{"$f":"SUM(#REF!)","v":{"$error":"#REF!"}},{"$f":"SUM(#REF!)","v":{"$error":"#REF!"}},{"$f":"SUM(#REF!)","v":{"$error":"#REF!"}},{"$f":"SUM(#REF!)","v":{"$error":"#REF!"}},{"$f":"SUM(#REF!)","v":{"$error":"#REF!"}},{"$f":"SUM(#REF!)","v":{"$error":"#REF!"}},{"$f":"SUM(#REF!)","v":{"$error":"#REF!"}},{"$f":"SUM(#REF!)","v":{"$error":"#REF!"}},{"$f":"SUM(#REF!)","v":{"$error":"#REF!"}},{"$f":"SUM(#REF!)","v":{"$error":"#REF!"}},{"$f":"SUM(#REF!)","v":{"$error":"#REF!"}},{"$f":"SUM(#REF!)","v":{"$error":"#REF!"}},{"$f":"SUM(#REF!)","v":{"$error":"#REF!"}},{"$f":"SUM(#REF!)","v":{"$error":"#REF!"}},{"$f":"SUM(#REF!)","v":{"$error":"#REF!"}},{"$f":"SUM(#REF!)","v":{"$error":"#REF!"}},{"$f":"SUM(#REF!)","v":{"$error":"#REF!"}},{"$f":"SUM(#REF!)","v":{"$error":"#REF!"}},{"$f":"SUM(#REF!)","v":{"$error":"#REF!"}},{"$f":"SUM(#REF!)","v":{"$error":"#REF!"}},{"$f":"SUM(#REF!)","v":{"$error":"#REF!"}},{"$f":"SUM(#REF!)","v":{"$error":"#REF!"}},{"$f":"SUM(#REF!)","v":{"$error":"#REF!"}},{"$f":"SUM(#REF!)","v":{"$error":"#REF!"}},{"$f":"SUM(#REF!)","v":{"$error":"#REF!"}},{"$f":"SUM(#REF!)","v":{"$error":"#REF!"}},{"$f":"SUM(#REF!)","v":{"$error":"#REF!"}},{"$f":"SUM(#REF!)","v":{"$error":"#REF!"}},{"$f":"SUM(#REF!)","v":{"$error":"#REF!"}},{"$f":"SUM(#REF!)","v":{"$error":"#REF!"}},{"$f":"SUM(#REF!)","v":{"$error":"#REF!"}},{"$f":"SUM(#REF!)","v":{"$error":"#REF!"}},{"$f":"SUM(#REF!)","v":{"$error":"#REF!"}},{"$f":"SUM(#REF!)","v":{"$error":"#REF!"}},{"$f":"SUM(#REF!)","v":{"$error":"#REF!"}},{"$f":"SUM(#REF!)","v":{"$error":"#REF!"}},{"$f":"SUM(#REF!)","v":{"$error":"#REF!"}},{"$f":"SUM(#REF!)","v":{"$error":"#REF!"}},{"$f":"SUM(#REF!)","v":{"$error":"#REF!"}},{"$f":"SUM(#REF!)","v":{"$error":"#REF!"}},{"$f":"SUM(#REF!)","v":{"$error":"#REF!"}},{"$f":"SUM(#REF!)","v":{"$error":"#REF!"}},{"$f":"SUM(#REF!)","v":{"$error":"#REF!"}},{"$f":"SUM(#REF!)","v":{"$error":"#REF!"}},{"$f":"SUM(#REF!)","v":{"$error":"#REF!"}},{"$f":"SUM(#REF!)","v":{"$error":"#REF!"}},{"$f":"SUM(#REF!)","v":{"$error":"#REF!"}},{"$f":"SUM(#REF!)","v":{"$error":"#REF!"}},{"$f":"SUM(#REF!)","v":{"$error":"#REF!"}},{"$f":"SUM(#REF!)","v":{"$error":"#REF!"}},{"$f":"SUM(#REF!)","v":{"$error":"#REF!"}},{"$f":"SUM(#REF!)","v":{"$error":"#REF!"}},{"$f":"SUM(#REF!)","v":{"$error":"#REF!"}},{"$f":"SUM(#REF!)","v":{"$error":"#REF!"}},{"$f":"SUM(#REF!)","v":{"$error":"#REF!"}},{"$f":"SUM(#REF!)","v":{"$error":"#REF!"}},{"$f":"SUM(#REF!)","v":{"$error":"#REF!"}},{"$f":"SUM(#REF!)","v":{"$error":"#REF!"}},{"$f":"SUM(#REF!)","v":{"$error":"#REF!"}},{"$f":"SUM(#REF!)","v":{"$error":"#REF!"}},{"$f":"SUM(#REF!)","v":{"$error":"#REF!"}},{"$f":"SUM(#REF!)","v":{"$error":"#REF!"}},{"$f":"SUM(#REF!)","v":{"$error":"#REF!"}},{"$f":"SUM(#REF!)","v":{"$error":"#REF!"}},{"$f":"SUM(#REF!)","v":{"$error":"#REF!"}},{"$f":"SUM(#REF!)","v":{"$error":"#REF!"}},{"$f":"SUM(#REF!)","v":{"$error":"#REF!"}},{"$f":"SUM(#REF!)","v":{"$error":"#REF!"}},{"$f":"SUM(#REF!)","v":{"$error":"#REF!"}},{"$f":"SUM(#REF!)","v":{"$error":"#REF!"}},{"$f":"SUM(#REF!)","v":{"$error":"#REF!"}},{"$f":"SUM(#REF!)","v":{"$error":"#REF!"}},{"$f":"SUM(#REF!)","v":{"$error":"#REF!"}},{"$f":"SUM(#REF!)","v":{"$error":"#REF!"}},{"$f":"SUM(#REF!)","v":{"$error":"#REF!"}},{"$f":"SUM(#REF!)","v":{"$error":"#REF!"}},{"$f":"SUM(#REF!)","v":{"$error":"#REF!"}},{"$f":"SUM(#REF!)","v":{"$error":"#REF!"}},{"$f":"SUM(#REF!)","v":{"$error":"#REF!"}},{"$f":"SUM(#REF!)","v":{"$error":"#REF!"}},{"$f":"SUM(#REF!)","v":{"$error":"#REF!"}},{"$f":"SUM(#REF!)","v":{"$error":"#REF!"}},{"$f":"SUM(#REF!)","v":{"$error":"#REF!"}},{"$f":"SUM(#REF!)","v":{"$error":"#REF!"}},{"$f":"SUM(#REF!)","v":{"$error":"#REF!"}},{"$f":"SUM(#REF!)","v":{"$error":"#REF!"}},{"$f":"SUM(#REF!)","v":{"$error":"#REF!"}},{"$f":"SUM(#REF!)","v":{"$error":"#REF!"}},{"$f":"SUM(#REF!)","v":{"$error":"#REF!"}},{"$f":"SUM(#REF!)","v":{"$error":"#REF!"}},{"$f":"SUM(#REF!)","v":{"$error":"#REF!"}},{"$f":"SUM(#REF!)","v":{"$error":"#REF!"}},{"$f":"SUM(#REF!)","v":{"$error":"#REF!"}},{"$f":"SUM(#REF!)","v":{"$error":"#REF!"}},{"$f":"SUM(#REF!)","v":{"$error":"#REF!"}},{"$f":"SUM(#REF!)","v":{"$error":"#REF!"}},{"$f":"SUM(#REF!)","v":{"$error":"#REF!"}},{"$f":"SUM(#REF!)","v":{"$error":"#REF!"}},{"$f":"SUM(#REF!)","v":{"$error":"#REF!"}},{"$f":"SUM(#REF!)","v":{"$error":"#REF!"}},{"$f":"SUM(#REF!)","v":{"$error":"#REF!"}},{"$f":"SUM(#REF!)","v":{"$error":"#REF!"}},{"$f":"SUM(#REF!)","v":{"$error":"#REF!"}},{"$f":"SUM(#REF!)","v":{"$error":"#REF!"}},{"$f":"SUM(#REF!)","v":{"$error":"#REF!"}},{"$f":"SUM(#REF!)","v":{"$error":"#REF!"}},{"$f":"SUM(#REF!)","v":{"$error":"#REF!"}},{"$f":"SUM(#REF!)","v":{"$error":"#REF!"}},{"$f":"SUM(#REF!)","v":{"$error":"#REF!"}},{"$f":"SUM(#REF!)","v":{"$error":"#REF!"}},{"$f":"SUM(#REF!)","v":{"$error":"#REF!"}},{"$f":"SUM(#REF!)","v":{"$error":"#REF!"}},{"$f":"SUM(#REF!)","v":{"$error":"#REF!"}},{"$f":"SUM(#REF!)","v":{"$error":"#REF!"}},{"$f":"SUM(#REF!)","v":{"$error":"#REF!"}},{"$f":"SUM(#REF!)","v":{"$error":"#REF!"}},{"$f":"SUM(#REF!)","v":{"$error":"#REF!"}},{"$f":"SUM(#REF!)","v":{"$error":"#REF!"}},{"$f":"SUM(#REF!)","v":{"$error":"#REF!"}},{"$f":"SUM(#REF!)","v":{"$error":"#REF!"}},{"$f":"SUM(#REF!)","v":{"$error":"#REF!"}},{"$f":"SUM(#REF!)","v":{"$error":"#REF!"}},{"$f":"SUM(#REF!)","v":{"$error":"#REF!"}},{"$f":"SUM(#REF!)","v":{"$error":"#REF!"}},{"$f":"SUM(#REF!)","v":{"$error":"#REF!"}},{"$f":"SUM(#REF!)","v":{"$error":"#REF!"}},{"$f":"SUM(#REF!)","v":{"$error":"#REF!"}},{"$f":"SUM(#REF!)","v":{"$error":"#REF!"}},{"$f":"SUM(#REF!)","v":{"$error":"#REF!"}},{"$f":"SUM(#REF!)","v":{"$error":"#REF!"}},{"$f":"SUM(#REF!)","v":{"$error":"#REF!"}},{"$f":"SUM(#REF!)","v":{"$error":"#REF!"}},{"$f":"SUM(#REF!)","v":{"$error":"#REF!"}},{"$f":"SUM(#REF!)","v":{"$error":"#REF!"}},{"$f":"SUM(#REF!)","v":{"$error":"#REF!"}},{"$f":"SUM(#REF!)","v":{"$error":"#REF!"}},{"$f":"SUM(#REF!)","v":{"$error":"#REF!"}},{"$f":"SUM(#REF!)","v":{"$error":"#REF!"}},{"$f":"SUM(#REF!)","v":{"$error":"#REF!"}},{"$f":"SUM(#REF!)","v":{"$error":"#REF!"}},{"$f":"SUM(#REF!)","v":{"$error":"#REF!"}},{"$f":"SUM(#REF!)","v":{"$error":"#REF!"}},{"$f":"SUM(#REF!)","v":{"$error":"#REF!"}},{"$f":"SUM(#REF!)","v":{"$error":"#REF!"}},{"$f":"SUM(#REF!)","v":{"$error":"#REF!"}},{"$f":"SUM(#REF!)","v":{"$error":"#REF!"}},{"$f":"SUM(#REF!)","v":{"$error":"#REF!"}},{"$f":"SUM(#REF!)","v":{"$error":"#REF!"}},{"$f":"SUM(#REF!)","v":{"$error":"#REF!"}},{"$f":"SUM(#REF!)","v":{"$error":"#REF!"}},{"$f":"SUM(#REF!)","v":{"$error":"#REF!"}},{"$f":"SUM(#REF!)","v":{"$error":"#REF!"}},{"$f":"SUM(#REF!)","v":{"$error":"#REF!"}},{"$f":"SUM(#REF!)","v":{"$error":"#REF!"}},{"$f":"SUM(#REF!)","v":{"$error":"#REF!"}},{"$f":"SUM(#REF!)","v":{"$error":"#REF!"}},{"$f":"SUM(#REF!)","v":{"$error":"#REF!"}},{"$f":"SUM(#REF!)","v":{"$error":"#REF!"}},{"$f":"SUM(#REF!)","v":{"$error":"#REF!"}},{"$f":"SUM(#REF!)","v":{"$error":"#REF!"}},{"$f":"SUM(#REF!)","v":{"$error":"#REF!"}},{"$f":"SUM(#REF!)","v":{"$error":"#REF!"}},{"$f":"SUM(#REF!)","v":{"$error":"#REF!"}},{"$f":"SUM(#REF!)","v":{"$error":"#REF!"}},{"$f":"SUM(#REF!)","v":{"$error":"#REF!"}},{"$f":"SUM(#REF!)","v":{"$error":"#REF!"}},{"$f":"SUM(#REF!)","v":{"$error":"#REF!"}},{"$f":"SUM(#REF!)","v":{"$error":"#REF!"}},{"$f":"SUM(#REF!)","v":{"$error":"#REF!"}},{"$f":"SUM(#REF!)","v":{"$error":"#REF!"}},{"$f":"SUM(#REF!)","v":{"$error":"#REF!"}},{"$f":"SUM(#REF!)","v":{"$error":"#REF!"}},{"$f":"SUM(#REF!)","v":{"$error":"#REF!"}},{"$f":"SUM(#REF!)","v":{"$error":"#REF!"}},{"$f":"SUM(#REF!)","v":{"$error":"#REF!"}},{"$f":"SUM(#REF!)","v":{"$error":"#REF!"}},{"$f":"SUM(#REF!)","v":{"$error":"#REF!"}},{"$f":"SUM(#REF!)","v":{"$error":"#REF!"}},{"$f":"SUM(#REF!)","v":{"$error":"#REF!"}},{"$f":"SUM(#REF!)","v":{"$error":"#REF!"}},{"$f":"SUM(#REF!)","v":{"$error":"#REF!"}},{"$f":"SUM(#REF!)","v":{"$error":"#REF!"}},{"$f":"SUM(#REF!)","v":{"$error":"#REF!"}},{"$f":"SUM(#REF!)","v":{"$error":"#REF!"}},{"$f":"SUM(#REF!)","v":{"$error":"#REF!"}},{"$f":"SUM(#REF!)","v":{"$error":"#REF!"}},{"$f":"SUM(#REF!)","v":{"$error":"#REF!"}},{"$f":"SUM(#REF!)","v":{"$error":"#REF!"}},{"$f":"SUM(#REF!)","v":{"$error":"#REF!"}},{"$f":"SUM(#REF!)","v":{"$error":"#REF!"}},{"$f":"SUM(#REF!)","v":{"$error":"#REF!"}},{"$f":"SUM(#REF!)","v":{"$error":"#REF!"}},{"$f":"SUM(#REF!)","v":{"$error":"#REF!"}},{"$f":"SUM(#REF!)","v":{"$error":"#REF!"}},{"$f":"SUM(#REF!)","v":{"$error":"#REF!"}},{"$f":"SUM(#REF!)","v":{"$error":"#REF!"}},{"$f":"SUM(#REF!)","v":{"$error":"#REF!"}},{"$f":"SUM(#REF!)","v":{"$error":"#REF!"}},{"$f":"SUM(#REF!)","v":{"$error":"#REF!"}},{"$f":"SUM(#REF!)","v":{"$error":"#REF!"}},{"$f":"SUM(#REF!)","v":{"$error":"#REF!"}},{"$f":"SUM(#REF!)","v":{"$error":"#REF!"}},{"$f":"SUM(#REF!)","v":{"$error":"#REF!"}},{"$f":"SUM(#REF!)","v":{"$error":"#REF!"}},{"$f":"SUM(#REF!)","v":{"$error":"#REF!"}},{"$f":"SUM(#REF!)","v":{"$error":"#REF!"}},{"$f":"SUM(#REF!)","v":{"$error":"#REF!"}},{"$f":"SUM(#REF!)","v":{"$error":"#REF!"}},{"$f":"SUM(#REF!)","v":{"$error":"#REF!"}},{"$f":"SUM(#REF!)","v":{"$error":"#REF!"}},{"$f":"SUM(#REF!)","v":{"$error":"#REF!"}},{"$f":"SUM(#REF!)","v":{"$error":"#REF!"}},{"$f":"SUM(#REF!)","v":{"$error":"#REF!"}},{"$f":"SUM(#REF!)","v":{"$error":"#REF!"}},{"$f":"SUM(#REF!)","v":{"$error":"#REF!"}},{"$f":"SUM(#REF!)","v":{"$error":"#REF!"}},{"$f":"SUM(#REF!)","v":{"$error":"#REF!"}},{"$f":"SUM(#REF!)","v":{"$error":"#REF!"}},{"$f":"SUM(#REF!)","v":{"$error":"#REF!"}},{"$f":"SUM(#REF!)","v":{"$error":"#REF!"}},{"$f":"SUM(#REF!)","v":{"$error":"#REF!"}},{"$f":"SUM(#REF!)","v":{"$error":"#REF!"}},{"$f":"SUM(#REF!)","v":{"$error":"#REF!"}},{"$f":"SUM(#REF!)","v":{"$error":"#REF!"}},{"$f":"SUM(#REF!)","v":{"$error":"#REF!"}},{"$f":"SUM(#REF!)","v":{"$error":"#REF!"}},{"$f":"SUM(#REF!)","v":{"$error":"#REF!"}},{"$f":"SUM(#REF!)","v":{"$error":"#REF!"}},{"$f":"SUM(#REF!)","v":{"$error":"#REF!"}},{"$f":"SUM(#REF!)","v":{"$error":"#REF!"}},{"$f":"SUM(#REF!)","v":{"$error":"#REF!"}},{"$f":"SUM(#REF!)","v":{"$error":"#REF!"}},{"$f":"SUM(#REF!)","v":{"$error":"#REF!"}},{"$f":"SUM(#REF!)","v":{"$error":"#REF!"}},{"$f":"SUM(#REF!)","v":{"$error":"#REF!"}},{"$f":"SUM(#REF!)","v":{"$error":"#REF!"}},{"$f":"SUM(#REF!)","v":{"$error":"#REF!"}},{"$f":"SUM(#REF!)","v":{"$error":"#REF!"}},{"$f":"SUM(#REF!)","v":{"$error":"#REF!"}},{"$f":"SUM(#REF!)","v":{"$error":"#REF!"}},{"$f":"SUM(#REF!)","v":{"$error":"#REF!"}},{"$f":"SUM(#REF!)","v":{"$error":"#REF!"}},{"$f":"SUM(#REF!)","v":{"$error":"#REF!"}},{"$f":"SUM(#REF!)","v":{"$error":"#REF!"}},{"$f":"SUM(#REF!)","v":{"$error":"#REF!"}},{"$f":"SUM(#REF!)","v":{"$error":"#REF!"}},{"$f":"SUM(#REF!)","v":{"$error":"#REF!"}},{"$f":"SUM(#REF!)","v":{"$error":"#REF!"}},{"$f":"SUM(#REF!)","v":{"$error":"#REF!"}},{"$f":"SUM(#REF!)","v":{"$error":"#REF!"}},{"$f":"SUM(#REF!)","v":{"$error":"#REF!"}},{"$f":"SUM(#REF!)","v":{"$error":"#REF!"}},{"$f":"SUM(#REF!)","v":{"$error":"#REF!"}},{"$f":"SUM(#REF!)","v":{"$error":"#REF!"}},{"$f":"SUM(#REF!)","v":{"$error":"#REF!"}},{"$f":"SUM(#REF!)","v":{"$error":"#REF!"}},{"$f":"SUM(#REF!)","v":{"$error":"#REF!"}},{"$f":"SUM(#REF!)","v":{"$error":"#REF!"}},{"$f":"SUM(#REF!)","v":{"$error":"#REF!"}},{"$f":"SUM(#REF!)","v":{"$error":"#REF!"}},{"$f":"SUM(#REF!)","v":{"$error":"#REF!"}},{"$f":"SUM(#REF!)","v":{"$error":"#REF!"}},{"$f":"SUM(#REF!)","v":{"$error":"#REF!"}},{"$f":"SUM(#REF!)","v":{"$error":"#REF!"}},{"$f":"SUM(#REF!)","v":{"$error":"#REF!"}},{"$f":"SUM(#REF!)","v":{"$error":"#REF!"}},{"$f":"SUM(#REF!)","v":{"$error":"#REF!"}},{"$f":"SUM(#REF!)","v":{"$error":"#REF!"}},{"$f":"SUM(#REF!)","v":{"$error":"#REF!"}},{"$f":"SUM(#REF!)","v":{"$error":"#REF!"}},{"$f":"SUM(#REF!)","v":{"$error":"#REF!"}},{"$f":"SUM(#REF!)","v":{"$error":"#REF!"}},{"$f":"SUM(#REF!)","v":{"$error":"#REF!"}},{"$f":"SUM(#REF!)","v":{"$error":"#REF!"}},{"$f":"SUM(#REF!)","v":{"$error":"#REF!"}},{"$f":"SUM(#REF!)","v":{"$error":"#REF!"}},{"$f":"SUM(#REF!)","v":{"$error":"#REF!"}},{"$f":"SUM(#REF!)","v":{"$error":"#REF!"}},{"$f":"SUM(#REF!)","v":{"$error":"#REF!"}},{"$f":"SUM(#REF!)","v":{"$error":"#REF!"}},{"$f":"SUM(#REF!)","v":{"$error":"#REF!"}},{"$f":"SUM(#REF!)","v":{"$error":"#REF!"}},{"$f":"SUM(#REF!)","v":{"$error":"#REF!"}},{"$f":"SUM(#REF!)","v":{"$error":"#REF!"}},{"$f":"SUM(#REF!)","v":{"$error":"#REF!"}},{"$f":"SUM(#REF!)","v":{"$error":"#REF!"}},{"$f":"SUM(#REF!)","v":{"$error":"#REF!"}},{"$f":"SUM(#REF!)","v":{"$error":"#REF!"}},{"$f":"SUM(#REF!)","v":{"$error":"#REF!"}},{"$f":"SUM(#REF!)","v":{"$error":"#REF!"}},{"$f":"SUM(#REF!)","v":{"$error":"#REF!"}},{"$f":"SUM(#REF!)","v":{"$error":"#REF!"}},{"$f":"SUM(#REF!)","v":{"$error":"#REF!"}},{"$f":"SUM(#REF!)","v":{"$error":"#REF!"}},{"$f":"SUM(#REF!)","v":{"$error":"#REF!"}},{"$f":"SUM(#REF!)","v":{"$error":"#REF!"}},{"$f":"SUM(#REF!)","v":{"$error":"#REF!"}},{"$f":"SUM(#REF!)","v":{"$error":"#REF!"}},{"$f":"SUM(#REF!)","v":{"$error":"#REF!"}},{"$f":"SUM(#REF!)","v":{"$error":"#REF!"}},{"$f":"SUM(#REF!)","v":{"$error":"#REF!"}},{"$f":"SUM(#REF!)","v":{"$error":"#REF!"}},{"$f":"SUM(#REF!)","v":{"$error":"#REF!"}},{"$f":"SUM(#REF!)","v":{"$error":"#REF!"}},{"$f":"SUM(#REF!)","v":{"$error":"#REF!"}},{"$f":"SUM(#REF!)","v":{"$error":"#REF!"}},{"$f":"SUM(#REF!)","v":{"$error":"#REF!"}},{"$f":"SUM(#REF!)","v":{"$error":"#REF!"}},{"$f":"SUM(#REF!)","v":{"$error":"#REF!"}},{"$f":"SUM(#REF!)","v":{"$error":"#REF!"}},{"$f":"SUM(#REF!)","v":{"$error":"#REF!"}},{"$f":"SUM(#REF!)","v":{"$error":"#REF!"}},{"$f":"SUM(#REF!)","v":{"$error":"#REF!"}},{"$f":"SUM(#REF!)","v":{"$error":"#REF!"}},{"$f":"SUM(#REF!)","v":{"$error":"#REF!"}},{"$f":"SUM(#REF!)","v":{"$error":"#REF!"}},{"$f":"SUM(#REF!)","v":{"$error":"#REF!"}},{"$f":"SUM(#REF!)","v":{"$error":"#REF!"}},{"$f":"SUM(#REF!)","v":{"$error":"#REF!"}},{"$f":"SUM(#REF!)","v":{"$error":"#REF!"}},{"$f":"SUM(#REF!)","v":{"$error":"#REF!"}},{"$f":"SUM(#REF!)","v":{"$error":"#REF!"}},{"$f":"SUM(#REF!)","v":{"$error":"#REF!"}},{"$f":"SUM(#REF!)","v":{"$error":"#REF!"}},{"$f":"SUM(#REF!)","v":{"$error":"#REF!"}},{"$f":"SUM(#REF!)","v":{"$error":"#REF!"}},{"$f":"SUM(#REF!)","v":{"$error":"#REF!"}},{"$f":"SUM(#REF!)","v":{"$error":"#REF!"}},{"$f":"SUM(#REF!)","v":{"$error":"#REF!"}},{"$f":"SUM(#REF!)","v":{"$error":"#REF!"}},{"$f":"SUM(#REF!)","v":{"$error":"#REF!"}},{"$f":"SUM(#REF!)","v":{"$error":"#REF!"}},{"$f":"SUM(#REF!)","v":{"$error":"#REF!"}},{"$f":"SUM(#REF!)","v":{"$error":"#REF!"}},{"$f":"SUM(#REF!)","v":{"$error":"#REF!"}},{"$f":"SUM(#REF!)","v":{"$error":"#REF!"}},{"$f":"SUM(#REF!)","v":{"$error":"#REF!"}},{"$f":"SUM(#REF!)","v":{"$error":"#REF!"}},{"$f":"SUM(#REF!)","v":{"$error":"#REF!"}},{"$f":"SUM(#REF!)","v":{"$error":"#REF!"}},{"$f":"SUM(#REF!)","v":{"$error":"#REF!"}},{"$f":"SUM(#REF!)","v":{"$error":"#REF!"}},{"$f":"SUM(#REF!)","v":{"$error":"#REF!"}},{"$f":"SUM(#REF!)","v":{"$error":"#REF!"}},{"$f":"SUM(#REF!)","v":{"$error":"#REF!"}},{"$f":"SUM(#REF!)","v":{"$error":"#REF!"}},{"$f":"SUM(#REF!)","v":{"$error":"#REF!"}},{"$f":"SUM(#REF!)","v":{"$error":"#REF!"}},{"$f":"SUM(#REF!)","v":{"$error":"#REF!"}},{"$f":"SUM(#REF!)","v":{"$error":"#REF!"}},{"$f":"SUM(#REF!)","v":{"$error":"#REF!"}},{"$f":"SUM(#REF!)","v":{"$error":"#REF!"}},{"$f":"SUM(#REF!)","v":{"$error":"#REF!"}},{"$f":"SUM(#REF!)","v":{"$error":"#REF!"}},{"$f":"SUM(#REF!)","v":{"$error":"#REF!"}},{"$f":"SUM(#REF!)","v":{"$error":"#REF!"}},{"$f":"SUM(#REF!)","v":{"$error":"#REF!"}},{"$f":"SUM(#REF!)","v":{"$error":"#REF!"}},{"$f":"SUM(#REF!)","v":{"$error":"#REF!"}},{"$f":"SUM(#REF!)","v":{"$error":"#REF!"}},{"$f":"SUM(#REF!)","v":{"$error":"#REF!"}},{"$f":"SUM(#REF!)","v":{"$error":"#REF!"}},{"$f":"SUM(#REF!)","v":{"$error":"#REF!"}},{"$f":"SUM(#REF!)","v":{"$error":"#REF!"}},{"$f":"SUM(#REF!)","v":{"$error":"#REF!"}},{"$f":"SUM(#REF!)","v":{"$error":"#REF!"}},{"$f":"SUM(#REF!)","v":{"$error":"#REF!"}},{"$f":"SUM(#REF!)","v":{"$error":"#REF!"}},{"$f":"SUM(#REF!)","v":{"$error":"#REF!"}},{"$f":"SUM(#REF!)","v":{"$error":"#REF!"}},{"$f":"SUM(#REF!)","v":{"$error":"#REF!"}},{"$f":"SUM(#REF!)","v":{"$error":"#REF!"}},{"$f":"SUM(#REF!)","v":{"$error":"#REF!"}},{"$f":"SUM(#REF!)","v":{"$error":"#REF!"}},{"$f":"SUM(#REF!)","v":{"$error":"#REF!"}},{"$f":"SUM(#REF!)","v":{"$error":"#REF!"}},{"$f":"SUM(#REF!)","v":{"$error":"#REF!"}},{"$f":"SUM(#REF!)","v":{"$error":"#REF!"}},{"$f":"SUM(#REF!)","v":{"$error":"#REF!"}},{"$f":"SUM(#REF!)","v":{"$error":"#REF!"}},{"$f":"SUM(#REF!)","v":{"$error":"#REF!"}},{"$f":"SUM(#REF!)","v":{"$error":"#REF!"}},{"$f":"SUM(#REF!)","v":{"$error":"#REF!"}},{"$f":"SUM(#REF!)","v":{"$error":"#REF!"}},{"$f":"SUM(#REF!)","v":{"$error":"#REF!"}},{"$f":"SUM(#REF!)","v":{"$error":"#REF!"}},{"$f":"SUM(#REF!)","v":{"$error":"#REF!"}},{"$f":"SUM(#REF!)","v":{"$error":"#REF!"}},{"$f":"SUM(#REF!)","v":{"$error":"#REF!"}},{"$f":"SUM(#REF!)","v":{"$error":"#REF!"}},{"$f":"SUM(#REF!)","v":{"$error":"#REF!"}},{"$f":"SUM(#REF!)","v":{"$error":"#REF!"}},{"$f":"SUM(#REF!)","v":{"$error":"#REF!"}},{"$f":"SUM(#REF!)","v":{"$error":"#REF!"}},{"$f":"SUM(#REF!)","v":{"$error":"#REF!"}},{"$f":"SUM(#REF!)","v":{"$error":"#REF!"}},{"$f":"SUM(#REF!)","v":{"$error":"#REF!"}},{"$f":"SUM(#REF!)","v":{"$error":"#REF!"}},{"$f":"SUM(#REF!)","v":{"$error":"#REF!"}},{"$f":"SUM(#REF!)","v":{"$error":"#REF!"}},{"$f":"SUM(#REF!)","v":{"$error":"#REF!"}},{"$f":"SUM(#REF!)","v":{"$error":"#REF!"}},{"$f":"SUM(#REF!)","v":{"$error":"#REF!"}},{"$f":"SUM(#REF!)","v":{"$error":"#REF!"}},{"$f":"SUM(#REF!)","v":{"$error":"#REF!"}},{"$f":"SUM(#REF!)","v":{"$error":"#REF!"}},{"$f":"SUM(#REF!)","v":{"$error":"#REF!"}},{"$f":"SUM(#REF!)","v":{"$error":"#REF!"}},{"$f":"SUM(#REF!)","v":{"$error":"#REF!"}},{"$f":"SUM(#REF!)","v":{"$error":"#REF!"}},{"$f":"SUM(#REF!)","v":{"$error":"#REF!"}},{"$f":"SUM(#REF!)","v":{"$error":"#REF!"}},{"$f":"SUM(#REF!)","v":{"$error":"#REF!"}},{"$f":"SUM(#REF!)","v":{"$error":"#REF!"}},{"$f":"SUM(#REF!)","v":{"$error":"#REF!"}},{"$f":"SUM(#REF!)","v":{"$error":"#REF!"}},{"$f":"SUM(#REF!)","v":{"$error":"#REF!"}},{"$f":"SUM(#REF!)","v":{"$error":"#REF!"}},{"$f":"SUM(#REF!)","v":{"$error":"#REF!"}},{"$f":"SUM(#REF!)","v":{"$error":"#REF!"}},{"$f":"SUM(#REF!)","v":{"$error":"#REF!"}},{"$f":"SUM(#REF!)","v":{"$error":"#REF!"}},{"$f":"SUM(#REF!)","v":{"$error":"#REF!"}},{"$f":"SUM(#REF!)","v":{"$error":"#REF!"}},{"$f":"SUM(#REF!)","v":{"$error":"#REF!"}},{"$f":"SUM(#REF!)","v":{"$error":"#REF!"}},{"$f":"SUM(#REF!)","v":{"$error":"#REF!"}},{"$f":"SUM(#REF!)","v":{"$error":"#REF!"}},{"$f":"SUM(#REF!)","v":{"$error":"#REF!"}},{"$f":"SUM(#REF!)","v":{"$error":"#REF!"}},{"$f":"SUM(#REF!)","v":{"$error":"#REF!"}},{"$f":"SUM(#REF!)","v":{"$error":"#REF!"}},{"$f":"SUM(#REF!)","v":{"$error":"#REF!"}},{"$f":"SUM(#REF!)","v":{"$error":"#REF!"}},{"$f":"SUM(#REF!)","v":{"$error":"#REF!"}},{"$f":"SUM(#REF!)","v":{"$error":"#REF!"}},{"$f":"SUM(#REF!)","v":{"$error":"#REF!"}},{"$f":"SUM(#REF!)","v":{"$error":"#REF!"}},{"$f":"SUM(#REF!)","v":{"$error":"#REF!"}},{"$f":"SUM(#REF!)","v":{"$error":"#REF!"}},{"$f":"SUM(#REF!)","v":{"$error":"#REF!"}},{"$f":"SUM(#REF!)","v":{"$error":"#REF!"}},{"$f":"SUM(#REF!)","v":{"$error":"#REF!"}},{"$f":"SUM(#REF!)","v":{"$error":"#REF!"}},{"$f":"SUM(#REF!)","v":{"$error":"#REF!"}},{"$f":"SUM(#REF!)","v":{"$error":"#REF!"}},{"$f":"SUM(#REF!)","v":{"$error":"#REF!"}},{"$f":"SUM(#REF!)","v":{"$error":"#REF!"}},{"$f":"SUM(#REF!)","v":{"$error":"#REF!"}},{"$f":"SUM(#REF!)","v":{"$error":"#REF!"}},{"$f":"SUM(#REF!)","v":{"$error":"#REF!"}},{"$f":"SUM(#REF!)","v":{"$error":"#REF!"}},{"$f":"SUM(#REF!)","v":{"$error":"#REF!"}},{"$f":"SUM(#REF!)","v":{"$error":"#REF!"}},{"$f":"SUM(#REF!)","v":{"$error":"#REF!"}},{"$f":"SUM(#REF!)","v":{"$error":"#REF!"}},{"$f":"SUM(#REF!)","v":{"$error":"#REF!"}},{"$f":"SUM(#REF!)","v":{"$error":"#REF!"}},{"$f":"SUM(#REF!)","v":{"$error":"#REF!"}},{"$f":"SUM(#REF!)","v":{"$error":"#REF!"}},{"$f":"SUM(#REF!)","v":{"$error":"#REF!"}},{"$f":"SUM(#REF!)","v":{"$error":"#REF!"}},{"$f":"SUM(#REF!)","v":{"$error":"#REF!"}},{"$f":"SUM(#REF!)","v":{"$error":"#REF!"}},{"$f":"SUM(#REF!)","v":{"$error":"#REF!"}},{"$f":"SUM(#REF!)","v":{"$error":"#REF!"}},{"$f":"SUM(#REF!)","v":{"$error":"#REF!"}},{"$f":"SUM(#REF!)","v":{"$error":"#REF!"}},{"$f":"SUM(#REF!)","v":{"$error":"#REF!"}},{"$f":"SUM(#REF!)","v":{"$error":"#REF!"}},{"$f":"SUM(#REF!)","v":{"$error":"#REF!"}},{"$f":"SUM(#REF!)","v":{"$error":"#REF!"}},{"$f":"SUM(#REF!)","v":{"$error":"#REF!"}},{"$f":"SUM(#REF!)","v":{"$error":"#REF!"}},{"$f":"SUM(#REF!)","v":{"$error":"#REF!"}},{"$f":"SUM(#REF!)","v":{"$error":"#REF!"}},{"$f":"SUM(#REF!)","v":{"$error":"#REF!"}},{"$f":"SUM(#REF!)","v":{"$error":"#REF!"}},{"$f":"SUM(#REF!)","v":{"$error":"#REF!"}},{"$f":"SUM(#REF!)","v":{"$error":"#REF!"}},{"$f":"SUM(#REF!)","v":{"$error":"#REF!"}},{"$f":"SUM(#REF!)","v":{"$error":"#REF!"}},{"$f":"SUM(#REF!)","v":{"$error":"#REF!"}},{"$f":"SUM(#REF!)","v":{"$error":"#REF!"}},{"$f":"SUM(#REF!)","v":{"$error":"#REF!"}},{"$f":"SUM(#REF!)","v":{"$error":"#REF!"}},{"$f":"SUM(#REF!)","v":{"$error":"#REF!"}},{"$f":"SUM(#REF!)","v":{"$error":"#REF!"}},{"$f":"SUM(#REF!)","v":{"$error":"#REF!"}},{"$f":"SUM(#REF!)","v":{"$error":"#REF!"}},{"$f":"SUM(#REF!)","v":{"$error":"#REF!"}},{"$f":"SUM(#REF!)","v":{"$error":"#REF!"}},{"$f":"SUM(#REF!)","v":{"$error":"#REF!"}},{"$f":"SUM(#REF!)","v":{"$error":"#REF!"}},{"$f":"SUM(#REF!)","v":{"$error":"#REF!"}},{"$f":"SUM(#REF!)","v":{"$error":"#REF!"}},{"$f":"SUM(#REF!)","v":{"$error":"#REF!"}},{"$f":"SUM(#REF!)","v":{"$error":"#REF!"}},{"$f":"SUM(#REF!)","v":{"$error":"#REF!"}},{"$f":"SUM(#REF!)","v":{"$error":"#REF!"}},{"$f":"SUM(#REF!)","v":{"$error":"#REF!"}},{"$f":"SUM(#REF!)","v":{"$error":"#REF!"}},{"$f":"SUM(#REF!)","v":{"$error":"#REF!"}},{"$f":"SUM(#REF!)","v":{"$error":"#REF!"}},{"$f":"SUM(#REF!)","v":{"$error":"#REF!"}},{"$f":"SUM(#REF!)","v":{"$error":"#REF!"}},{"$f":"SUM(#REF!)","v":{"$error":"#REF!"}},{"$f":"SUM(#REF!)","v":{"$error":"#REF!"}},{"$f":"SUM(#REF!)","v":{"$error":"#REF!"}},{"$f":"SUM(#REF!)","v":{"$error":"#REF!"}},{"$f":"SUM(#REF!)","v":{"$error":"#REF!"}},{"$f":"SUM(#REF!)","v":{"$error":"#REF!"}},{"$f":"SUM(#REF!)","v":{"$error":"#REF!"}},{"$f":"SUM(#REF!)","v":{"$error":"#REF!"}},{"$f":"SUM(#REF!)","v":{"$error":"#REF!"}},{"$f":"SUM(#REF!)","v":{"$error":"#REF!"}},{"$f":"SUM(#REF!)","v":{"$error":"#REF!"}},{"$f":"SUM(#REF!)","v":{"$error":"#REF!"}},{"$f":"SUM(#REF!)","v":{"$error":"#REF!"}},{"$f":"SUM(#REF!)","v":{"$error":"#REF!"}},{"$f":"SUM(#REF!)","v":{"$error":"#REF!"}},{"$f":"SUM(#REF!)","v":{"$error":"#REF!"}},{"$f":"SUM(#REF!)","v":{"$error":"#REF!"}},{"$f":"SUM(#REF!)","v":{"$error":"#REF!"}},{"$f":"SUM(#REF!)","v":{"$error":"#REF!"}},{"$f":"SUM(#REF!)","v":{"$error":"#REF!"}},{"$f":"SUM(#REF!)","v":{"$error":"#REF!"}},{"$f":"SUM(#REF!)","v":{"$error":"#REF!"}},{"$f":"SUM(#REF!)","v":{"$error":"#REF!"}},{"$f":"SUM(#REF!)","v":{"$error":"#REF!"}},{"$f":"SUM(#REF!)","v":{"$error":"#REF!"}},{"$f":"SUM(#REF!)","v":{"$error":"#REF!"}},{"$f":"SUM(#REF!)","v":{"$error":"#REF!"}},{"$f":"SUM(#REF!)","v":{"$error":"#REF!"}},{"$f":"SUM(#REF!)","v":{"$error":"#REF!"}},{"$f":"SUM(#REF!)","v":{"$error":"#REF!"}},{"$f":"SUM(#REF!)","v":{"$error":"#REF!"}},{"$f":"SUM(#REF!)","v":{"$error":"#REF!"}},{"$f":"SUM(#REF!)","v":{"$error":"#REF!"}},{"$f":"SUM(#REF!)","v":{"$error":"#REF!"}},{"$f":"SUM(#REF!)","v":{"$error":"#REF!"}},{"$f":"SUM(#REF!)","v":{"$error":"#REF!"}},{"$f":"SUM(#REF!)","v":{"$error":"#REF!"}},{"$f":"SUM(#REF!)","v":{"$error":"#REF!"}},{"$f":"SUM(#REF!)","v":{"$error":"#REF!"}},{"$f":"SUM(#REF!)","v":{"$error":"#REF!"}},{"$f":"SUM(#REF!)","v":{"$error":"#REF!"}},{"$f":"SUM(#REF!)","v":{"$error":"#REF!"}},{"$f":"SUM(#REF!)","v":{"$error":"#REF!"}},{"$f":"SUM(#REF!)","v":{"$error":"#REF!"}},{"$f":"SUM(#REF!)","v":{"$error":"#REF!"}},{"$f":"SUM(#REF!)","v":{"$error":"#REF!"}},{"$f":"SUM(#REF!)","v":{"$error":"#REF!"}},{"$f":"SUM(#REF!)","v":{"$error":"#REF!"}},{"$f":"SUM(#REF!)","v":{"$error":"#REF!"}},{"$f":"SUM(#REF!)","v":{"$error":"#REF!"}},{"$f":"SUM(#REF!)","v":{"$error":"#REF!"}},{"$f":"SUM(#REF!)","v":{"$error":"#REF!"}},{"$f":"SUM(#REF!)","v":{"$error":"#REF!"}},{"$f":"SUM(#REF!)","v":{"$error":"#REF!"}},{"$f":"SUM(#REF!)","v":{"$error":"#REF!"}},{"$f":"SUM(#REF!)","v":{"$error":"#REF!"}},{"$f":"SUM(#REF!)","v":{"$error":"#REF!"}},{"$f":"SUM(#REF!)","v":{"$error":"#REF!"}},{"$f":"SUM(#REF!)","v":{"$error":"#REF!"}},{"$f":"SUM(#REF!)","v":{"$error":"#REF!"}},{"$f":"SUM(#REF!)","v":{"$error":"#REF!"}},{"$f":"SUM(#REF!)","v":{"$error":"#REF!"}},{"$f":"SUM(#REF!)","v":{"$error":"#REF!"}},{"$f":"SUM(#REF!)","v":{"$error":"#REF!"}},{"$f":"SUM(#REF!)","v":{"$error":"#REF!"}},{"$f":"SUM(#REF!)","v":{"$error":"#REF!"}},{"$f":"SUM(#REF!)","v":{"$error":"#REF!"}},{"$f":"SUM(#REF!)","v":{"$error":"#REF!"}},{"$f":"SUM(#REF!)","v":{"$error":"#REF!"}},{"$f":"SUM(#REF!)","v":{"$error":"#REF!"}},{"$f":"SUM(#REF!)","v":{"$error":"#REF!"}},{"$f":"SUM(#REF!)","v":{"$error":"#REF!"}},{"$f":"SUM(#REF!)","v":{"$error":"#REF!"}},{"$f":"SUM(#REF!)","v":{"$error":"#REF!"}},{"$f":"SUM(#REF!)","v":{"$error":"#REF!"}},{"$f":"SUM(#REF!)","v":{"$error":"#REF!"}},{"$f":"SUM(#REF!)","v":{"$error":"#REF!"}},{"$f":"SUM(#REF!)","v":{"$error":"#REF!"}},{"$f":"SUM(#REF!)","v":{"$error":"#REF!"}},{"$f":"SUM(#REF!)","v":{"$error":"#REF!"}},{"$f":"SUM(#REF!)","v":{"$error":"#REF!"}},{"$f":"SUM(#REF!)","v":{"$error":"#REF!"}},{"$f":"SUM(#REF!)","v":{"$error":"#REF!"}},{"$f":"SUM(#REF!)","v":{"$error":"#REF!"}},{"$f":"SUM(#REF!)","v":{"$error":"#REF!"}},{"$f":"SUM(#REF!)","v":{"$error":"#REF!"}},{"$f":"SUM(#REF!)","v":{"$error":"#REF!"}},{"$f":"SUM(#REF!)","v":{"$error":"#REF!"}},{"$f":"SUM(#REF!)","v":{"$error":"#REF!"}},{"$f":"SUM(#REF!)","v":{"$error":"#REF!"}},{"$f":"SUM(#REF!)","v":{"$error":"#REF!"}},{"$f":"SUM(#REF!)","v":{"$error":"#REF!"}},{"$f":"SUM(#REF!)","v":{"$error":"#REF!"}},{"$f":"SUM(#REF!)","v":{"$error":"#REF!"}},{"$f":"SUM(#REF!)","v":{"$error":"#REF!"}},{"$f":"SUM(#REF!)","v":{"$error":"#REF!"}},{"$f":"SUM(#REF!)","v":{"$error":"#REF!"}},{"$f":"SUM(#REF!)","v":{"$error":"#REF!"}},{"$f":"SUM(#REF!)","v":{"$error":"#REF!"}},{"$f":"SUM(#REF!)","v":{"$error":"#REF!"}},{"$f":"SUM(#REF!)","v":{"$error":"#REF!"}},{"$f":"SUM(#REF!)","v":{"$error":"#REF!"}},{"$f":"SUM(#REF!)","v":{"$error":"#REF!"}},{"$f":"SUM(#REF!)","v":{"$error":"#REF!"}},{"$f":"SUM(#REF!)","v":{"$error":"#REF!"}},{"$f":"SUM(#REF!)","v":{"$error":"#REF!"}},{"$f":"SUM(#REF!)","v":{"$error":"#REF!"}},{"$f":"SUM(#REF!)","v":{"$error":"#REF!"}},{"$f":"SUM(#REF!)","v":{"$error":"#REF!"}},{"$f":"SUM(#REF!)","v":{"$error":"#REF!"}},{"$f":"SUM(#REF!)","v":{"$error":"#REF!"}},{"$f":"SUM(#REF!)","v":{"$error":"#REF!"}},{"$f":"SUM(#REF!)","v":{"$error":"#REF!"}},{"$f":"SUM(#REF!)","v":{"$error":"#REF!"}},{"$f":"SUM(#REF!)","v":{"$error":"#REF!"}},{"$f":"SUM(#REF!)","v":{"$error":"#REF!"}},{"$f":"SUM(#REF!)","v":{"$error":"#REF!"}},{"$f":"SUM(#REF!)","v":{"$error":"#REF!"}},{"$f":"SUM(#REF!)","v":{"$error":"#REF!"}},{"$f":"SUM(#REF!)","v":{"$error":"#REF!"}},{"$f":"SUM(#REF!)","v":{"$error":"#REF!"}},{"$f":"SUM(#REF!)","v":{"$error":"#REF!"}},{"$f":"SUM(#REF!)","v":{"$error":"#REF!"}},{"$f":"SUM(#REF!)","v":{"$error":"#REF!"}},{"$f":"SUM(#REF!)","v":{"$error":"#REF!"}},{"$f":"SUM(#REF!)","v":{"$error":"#REF!"}},{"$f":"SUM(#REF!)","v":{"$error":"#REF!"}},{"$f":"SUM(#REF!)","v":{"$error":"#REF!"}},{"$f":"SUM(#REF!)","v":{"$error":"#REF!"}},{"$f":"SUM(#REF!)","v":{"$error":"#REF!"}},{"$f":"SUM(#REF!)","v":{"$error":"#REF!"}},{"$f":"SUM(#REF!)","v":{"$error":"#REF!"}},{"$f":"SUM(#REF!)","v":{"$error":"#REF!"}},{"$f":"SUM(#REF!)","v":{"$error":"#REF!"}},{"$f":"SUM(#REF!)","v":{"$error":"#REF!"}},{"$f":"SUM(#REF!)","v":{"$error":"#REF!"}},{"$f":"SUM(#REF!)","v":{"$error":"#REF!"}},{"$f":"SUM(#REF!)","v":{"$error":"#REF!"}},{"$f":"SUM(#REF!)","v":{"$error":"#REF!"}},{"$f":"SUM(#REF!)","v":{"$error":"#REF!"}},{"$f":"SUM(#REF!)","v":{"$error":"#REF!"}},{"$f":"SUM(#REF!)","v":{"$error":"#REF!"}},{"$f":"SUM(#REF!)","v":{"$error":"#REF!"}},{"$f":"SUM(#REF!)","v":{"$error":"#REF!"}},{"$f":"SUM(#REF!)","v":{"$error":"#REF!"}},{"$f":"SUM(#REF!)","v":{"$error":"#REF!"}},{"$f":"SUM(#REF!)","v":{"$error":"#REF!"}},{"$f":"SUM(#REF!)","v":{"$error":"#REF!"}},{"$f":"SUM(#REF!)","v":{"$error":"#REF!"}},{"$f":"SUM(#REF!)","v":{"$error":"#REF!"}},{"$f":"SUM(#REF!)","v":{"$error":"#REF!"}},{"$f":"SUM(#REF!)","v":{"$error":"#REF!"}},{"$f":"SUM(#REF!)","v":{"$error":"#REF!"}},{"$f":"SUM(#REF!)","v":{"$error":"#REF!"}},{"$f":"SUM(#REF!)","v":{"$error":"#REF!"}},{"$f":"SUM(#REF!)","v":{"$error":"#REF!"}},{"$f":"SUM(#REF!)","v":{"$error":"#REF!"}},{"$f":"SUM(#REF!)","v":{"$error":"#REF!"}},{"$f":"SUM(#REF!)","v":{"$error":"#REF!"}},{"$f":"SUM(#REF!)","v":{"$error":"#REF!"}},{"$f":"SUM(#REF!)","v":{"$error":"#REF!"}},{"$f":"SUM(#REF!)","v":{"$error":"#REF!"}},{"$f":"SUM(#REF!)","v":{"$error":"#REF!"}},{"$f":"SUM(#REF!)","v":{"$error":"#REF!"}},{"$f":"SUM(#REF!)","v":{"$error":"#REF!"}},{"$f":"SUM(#REF!)","v":{"$error":"#REF!"}},{"$f":"SUM(#REF!)","v":{"$error":"#REF!"}},{"$f":"SUM(#REF!)","v":{"$error":"#REF!"}},{"$f":"SUM(#REF!)","v":{"$error":"#REF!"}},{"$f":"SUM(#REF!)","v":{"$error":"#REF!"}},{"$f":"SUM(#REF!)","v":{"$error":"#REF!"}},{"$f":"SUM(#REF!)","v":{"$error":"#REF!"}},{"$f":"SUM(#REF!)","v":{"$error":"#REF!"}},{"$f":"SUM(#REF!)","v":{"$error":"#REF!"}},{"$f":"SUM(#REF!)","v":{"$error":"#REF!"}},{"$f":"SUM(#REF!)","v":{"$error":"#REF!"}},{"$f":"SUM(#REF!)","v":{"$error":"#REF!"}},{"$f":"SUM(#REF!)","v":{"$error":"#REF!"}},{"$f":"SUM(#REF!)","v":{"$error":"#REF!"}},{"$f":"SUM(#REF!)","v":{"$error":"#REF!"}},{"$f":"SUM(#REF!)","v":{"$error":"#REF!"}},{"$f":"SUM(#REF!)","v":{"$error":"#REF!"}},{"$f":"SUM(#REF!)","v":{"$error":"#REF!"}},{"$f":"SUM(#REF!)","v":{"$error":"#REF!"}},{"$f":"SUM(#REF!)","v":{"$error":"#REF!"}},{"$f":"SUM(#REF!)","v":{"$error":"#REF!"}},{"$f":"SUM(#REF!)","v":{"$error":"#REF!"}},{"$f":"SUM(#REF!)","v":{"$error":"#REF!"}},{"$f":"SUM(#REF!)","v":{"$error":"#REF!"}},{"$f":"SUM(#REF!)","v":{"$error":"#REF!"}},{"$f":"SUM(#REF!)","v":{"$error":"#REF!"}},{"$f":"SUM(#REF!)","v":{"$error":"#REF!"}},{"$f":"SUM(#REF!)","v":{"$error":"#REF!"}},{"$f":"SUM(#REF!)","v":{"$error":"#REF!"}},{"$f":"SUM(#REF!)","v":{"$error":"#REF!"}},{"$f":"SUM(#REF!)","v":{"$error":"#REF!"}},{"$f":"SUM(#REF!)","v":{"$error":"#REF!"}},{"$f":"SUM(#REF!)","v":{"$error":"#REF!"}},{"$f":"SUM(#REF!)","v":{"$error":"#REF!"}},{"$f":"SUM(#REF!)","v":{"$error":"#REF!"}},{"$f":"SUM(#REF!)","v":{"$error":"#REF!"}},{"$f":"SUM(#REF!)","v":{"$error":"#REF!"}},{"$f":"SUM(#REF!)","v":{"$error":"#REF!"}},{"$f":"SUM(#REF!)","v":{"$error":"#REF!"}},{"$f":"SUM(#REF!)","v":{"$error":"#REF!"}},{"$f":"SUM(#REF!)","v":{"$error":"#REF!"}},{"$f":"SUM(#REF!)","v":{"$error":"#REF!"}},{"$f":"SUM(#REF!)","v":{"$error":"#REF!"}},{"$f":"SUM(#REF!)","v":{"$error":"#REF!"}},{"$f":"SUM(#REF!)","v":{"$error":"#REF!"}},{"$f":"SUM(#REF!)","v":{"$error":"#REF!"}},{"$f":"SUM(#REF!)","v":{"$error":"#REF!"}},{"$f":"SUM(#REF!)","v":{"$error":"#REF!"}},{"$f":"SUM(#REF!)","v":{"$error":"#REF!"}},{"$f":"SUM(#REF!)","v":{"$error":"#REF!"}},{"$f":"SUM(#REF!)","v":{"$error":"#REF!"}},{"$f":"SUM(#REF!)","v":{"$error":"#REF!"}},{"$f":"SUM(#REF!)","v":{"$error":"#REF!"}},{"$f":"SUM(#REF!)","v":{"$error":"#REF!"}},{"$f":"SUM(#REF!)","v":{"$error":"#REF!"}},{"$f":"SUM(#REF!)","v":{"$error":"#REF!"}},{"$f":"SUM(#REF!)","v":{"$error":"#REF!"}},{"$f":"SUM(#REF!)","v":{"$error":"#REF!"}},{"$f":"SUM(#REF!)","v":{"$error":"#REF!"}},{"$f":"SUM(#REF!)","v":{"$error":"#REF!"}},{"$f":"SUM(#REF!)","v":{"$error":"#REF!"}},{"$f":"SUM(#REF!)","v":{"$error":"#REF!"}},{"$f":"SUM(#REF!)","v":{"$error":"#REF!"}},{"$f":"SUM(#REF!)","v":{"$error":"#REF!"}},{"$f":"SUM(#REF!)","v":{"$error":"#REF!"}},{"$f":"SUM(#REF!)","v":{"$error":"#REF!"}},{"$f":"SUM(#REF!)","v":{"$error":"#REF!"}},{"$f":"SUM(#REF!)","v":{"$error":"#REF!"}},{"$f":"SUM(#REF!)","v":{"$error":"#REF!"}},{"$f":"SUM(#REF!)","v":{"$error":"#REF!"}},{"$f":"SUM(#REF!)","v":{"$error":"#REF!"}},{"$f":"SUM(#REF!)","v":{"$error":"#REF!"}},{"$f":"SUM(#REF!)","v":{"$error":"#REF!"}},{"$f":"SUM(#REF!)","v":{"$error":"#REF!"}},{"$f":"SUM(#REF!)","v":{"$error":"#REF!"}},{"$f":"SUM(#REF!)","v":{"$error":"#REF!"}},{"$f":"SUM(#REF!)","v":{"$error":"#REF!"}},{"$f":"SUM(#REF!)","v":{"$error":"#REF!"}},{"$f":"SUM(#REF!)","v":{"$error":"#REF!"}},{"$f":"SUM(#REF!)","v":{"$error":"#REF!"}},{"$f":"SUM(#REF!)","v":{"$error":"#REF!"}},{"$f":"SUM(#REF!)","v":{"$error":"#REF!"}},{"$f":"SUM(#REF!)","v":{"$error":"#REF!"}},{"$f":"SUM(#REF!)","v":{"$error":"#REF!"}},{"$f":"SUM(#REF!)","v":{"$error":"#REF!"}},{"$f":"SUM(#REF!)","v":{"$error":"#REF!"}},{"$f":"SUM(#REF!)","v":{"$error":"#REF!"}},{"$f":"SUM(#REF!)","v":{"$error":"#REF!"}},{"$f":"SUM(#REF!)","v":{"$error":"#REF!"}},{"$f":"SUM(#REF!)","v":{"$error":"#REF!"}},{"$f":"SUM(#REF!)","v":{"$error":"#REF!"}},{"$f":"SUM(#REF!)","v":{"$error":"#REF!"}},{"$f":"SUM(#REF!)","v":{"$error":"#REF!"}},{"$f":"SUM(#REF!)","v":{"$error":"#REF!"}},{"$f":"SUM(#REF!)","v":{"$error":"#REF!"}},{"$f":"SUM(#REF!)","v":{"$error":"#REF!"}},{"$f":"SUM(#REF!)","v":{"$error":"#REF!"}},{"$f":"SUM(#REF!)","v":{"$error":"#REF!"}},{"$f":"SUM(#REF!)","v":{"$error":"#REF!"}},{"$f":"SUM(#REF!)","v":{"$error":"#REF!"}},{"$f":"SUM(#REF!)","v":{"$error":"#REF!"}},{"$f":"SUM(#REF!)","v":{"$error":"#REF!"}},{"$f":"SUM(#REF!)","v":{"$error":"#REF!"}},{"$f":"SUM(#REF!)","v":{"$error":"#REF!"}},{"$f":"SUM(#REF!)","v":{"$error":"#REF!"}},{"$f":"SUM(#REF!)","v":{"$error":"#REF!"}},{"$f":"SUM(#REF!)","v":{"$error":"#REF!"}},{"$f":"SUM(#REF!)","v":{"$error":"#REF!"}},{"$f":"SUM(#REF!)","v":{"$error":"#REF!"}},{"$f":"SUM(#REF!)","v":{"$error":"#REF!"}},{"$f":"SUM(#REF!)","v":{"$error":"#REF!"}},{"$f":"SUM(#REF!)","v":{"$error":"#REF!"}},{"$f":"SUM(#REF!)","v":{"$error":"#REF!"}},{"$f":"SUM(#REF!)","v":{"$error":"#REF!"}},{"$f":"SUM(#REF!)","v":{"$error":"#REF!"}},{"$f":"SUM(#REF!)","v":{"$error":"#REF!"}},{"$f":"SUM(#REF!)","v":{"$error":"#REF!"}},{"$f":"SUM(#REF!)","v":{"$error":"#REF!"}},{"$f":"SUM(#REF!)","v":{"$error":"#REF!"}},{"$f":"SUM(#REF!)","v":{"$error":"#REF!"}},{"$f":"SUM(#REF!)","v":{"$error":"#REF!"}},{"$f":"SUM(#REF!)","v":{"$error":"#REF!"}},{"$f":"SUM(#REF!)","v":{"$error":"#REF!"}},{"$f":"SUM(#REF!)","v":{"$error":"#REF!"}},{"$f":"SUM(#REF!)","v":{"$error":"#REF!"}},{"$f":"SUM(#REF!)","v":{"$error":"#REF!"}},{"$f":"SUM(#REF!)","v":{"$error":"#REF!"}},{"$f":"SUM(#REF!)","v":{"$error":"#REF!"}},{"$f":"SUM(#REF!)","v":{"$error":"#REF!"}},{"$f":"SUM(#REF!)","v":{"$error":"#REF!"}},{"$f":"SUM(#REF!)","v":{"$error":"#REF!"}},{"$f":"SUM(#REF!)","v":{"$error":"#REF!"}},{"$f":"SUM(#REF!)","v":{"$error":"#REF!"}},{"$f":"SUM(#REF!)","v":{"$error":"#REF!"}},{"$f":"SUM(#REF!)","v":{"$error":"#REF!"}},{"$f":"SUM(#REF!)","v":{"$error":"#REF!"}},{"$f":"SUM(#REF!)","v":{"$error":"#REF!"}},{"$f":"SUM(#REF!)","v":{"$error":"#REF!"}},{"$f":"SUM(#REF!)","v":{"$error":"#REF!"}},{"$f":"SUM(#REF!)","v":{"$error":"#REF!"}},{"$f":"SUM(#REF!)","v":{"$error":"#REF!"}},{"$f":"SUM(#REF!)","v":{"$error":"#REF!"}},{"$f":"SUM(#REF!)","v":{"$error":"#REF!"}},{"$f":"SUM(#REF!)","v":{"$error":"#REF!"}},{"$f":"SUM(#REF!)","v":{"$error":"#REF!"}},{"$f":"SUM(#REF!)","v":{"$error":"#REF!"}},{"$f":"SUM(#REF!)","v":{"$error":"#REF!"}},{"$f":"SUM(#REF!)","v":{"$error":"#REF!"}},{"$f":"SUM(#REF!)","v":{"$error":"#REF!"}},{"$f":"SUM(#REF!)","v":{"$error":"#REF!"}},{"$f":"SUM(#REF!)","v":{"$error":"#REF!"}},{"$f":"SUM(#REF!)","v":{"$error":"#REF!"}},{"$f":"SUM(#REF!)","v":{"$error":"#REF!"}},{"$f":"SUM(#REF!)","v":{"$error":"#REF!"}},{"$f":"SUM(#REF!)","v":{"$error":"#REF!"}},{"$f":"SUM(#REF!)","v":{"$error":"#REF!"}},{"$f":"SUM(#REF!)","v":{"$error":"#REF!"}},{"$f":"SUM(#REF!)","v":{"$error":"#REF!"}},{"$f":"SUM(#REF!)","v":{"$error":"#REF!"}},{"$f":"SUM(#REF!)","v":{"$error":"#REF!"}},{"$f":"SUM(#REF!)","v":{"$error":"#REF!"}},{"$f":"SUM(#REF!)","v":{"$error":"#REF!"}},{"$f":"SUM(#REF!)","v":{"$error":"#REF!"}},{"$f":"SUM(#REF!)","v":{"$error":"#REF!"}},{"$f":"SUM(#REF!)","v":{"$error":"#REF!"}},{"$f":"SUM(#REF!)","v":{"$error":"#REF!"}},{"$f":"SUM(#REF!)","v":{"$error":"#REF!"}},{"$f":"SUM(#REF!)","v":{"$error":"#REF!"}},{"$f":"SUM(#REF!)","v":{"$error":"#REF!"}},{"$f":"SUM(#REF!)","v":{"$error":"#REF!"}},{"$f":"SUM(#REF!)","v":{"$error":"#REF!"}},{"$f":"SUM(#REF!)","v":{"$error":"#REF!"}},{"$f":"SUM(#REF!)","v":{"$error":"#REF!"}},{"$f":"SUM(#REF!)","v":{"$error":"#REF!"}},{"$f":"SUM(#REF!)","v":{"$error":"#REF!"}},{"$f":"SUM(#REF!)","v":{"$error":"#REF!"}},{"$f":"SUM(#REF!)","v":{"$error":"#REF!"}},{"$f":"SUM(#REF!)","v":{"$error":"#REF!"}},{"$f":"SUM(#REF!)","v":{"$error":"#REF!"}},{"$f":"SUM(#REF!)","v":{"$error":"#REF!"}},{"$f":"SUM(#REF!)","v":{"$error":"#REF!"}},{"$f":"SUM(#REF!)","v":{"$error":"#REF!"}},{"$f":"SUM(#REF!)","v":{"$error":"#REF!"}},{"$f":"SUM(#REF!)","v":{"$error":"#REF!"}},{"$f":"SUM(#REF!)","v":{"$error":"#REF!"}},{"$f":"SUM(#REF!)","v":{"$error":"#REF!"}},{"$f":"SUM(#REF!)","v":{"$error":"#REF!"}},{"$f":"SUM(#REF!)","v":{"$error":"#REF!"}},{"$f":"SUM(#REF!)","v":{"$error":"#REF!"}},{"$f":"SUM(#REF!)","v":{"$error":"#REF!"}},{"$f":"SUM(#REF!)","v":{"$error":"#REF!"}},{"$f":"SUM(#REF!)","v":{"$error":"#REF!"}},{"$f":"SUM(#REF!)","v":{"$error":"#REF!"}},{"$f":"SUM(#REF!)","v":{"$error":"#REF!"}},{"$f":"SUM(#REF!)","v":{"$error":"#REF!"}},{"$f":"SUM(#REF!)","v":{"$error":"#REF!"}},{"$f":"SUM(#REF!)","v":{"$error":"#REF!"}},{"$f":"SUM(#REF!)","v":{"$error":"#REF!"}},{"$f":"SUM(#REF!)","v":{"$error":"#REF!"}},{"$f":"SUM(#REF!)","v":{"$error":"#REF!"}},{"$f":"SUM(#REF!)","v":{"$error":"#REF!"}},{"$f":"SUM(#REF!)","v":{"$error":"#REF!"}},{"$f":"SUM(#REF!)","v":{"$error":"#REF!"}},{"$f":"SUM(#REF!)","v":{"$error":"#REF!"}},{"$f":"SUM(#REF!)","v":{"$error":"#REF!"}},{"$f":"SUM(#REF!)","v":{"$error":"#REF!"}},{"$f":"SUM(#REF!)","v":{"$error":"#REF!"}},{"$f":"SUM(#REF!)","v":{"$error":"#REF!"}},{"$f":"SUM(#REF!)","v":{"$error":"#REF!"}},{"$f":"SUM(#REF!)","v":{"$error":"#REF!"}},{"$f":"SUM(#REF!)","v":{"$error":"#REF!"}},{"$f":"SUM(#REF!)","v":{"$error":"#REF!"}},{"$f":"SUM(#REF!)","v":{"$error":"#REF!"}},{"$f":"SUM(#REF!)","v":{"$error":"#REF!"}},{"$f":"SUM(#REF!)","v":{"$error":"#REF!"}},{"$f":"SUM(#REF!)","v":{"$error":"#REF!"}},{"$f":"SUM(#REF!)","v":{"$error":"#REF!"}},{"$f":"SUM(#REF!)","v":{"$error":"#REF!"}},{"$f":"SUM(#REF!)","v":{"$error":"#REF!"}},{"$f":"SUM(#REF!)","v":{"$error":"#REF!"}},{"$f":"SUM(#REF!)","v":{"$error":"#REF!"}},{"$f":"SUM(#REF!)","v":{"$error":"#REF!"}},{"$f":"SUM(#REF!)","v":{"$error":"#REF!"}},{"$f":"SUM(#REF!)","v":{"$error":"#REF!"}},{"$f":"SUM(#REF!)","v":{"$error":"#REF!"}},{"$f":"SUM(#REF!)","v":{"$error":"#REF!"}},{"$f":"SUM(#REF!)","v":{"$error":"#REF!"}},{"$f":"SUM(#REF!)","v":{"$error":"#REF!"}},{"$f":"SUM(#REF!)","v":{"$error":"#REF!"}},{"$f":"SUM(#REF!)","v":{"$error":"#REF!"}},{"$f":"SUM(#REF!)","v":{"$error":"#REF!"}},{"$f":"SUM(#REF!)","v":{"$error":"#REF!"}},{"$f":"SUM(#REF!)","v":{"$error":"#REF!"}},{"$f":"SUM(#REF!)","v":{"$error":"#REF!"}},{"$f":"SUM(#REF!)","v":{"$error":"#REF!"}},{"$f":"SUM(#REF!)","v":{"$error":"#REF!"}},{"$f":"SUM(#REF!)","v":{"$error":"#REF!"}},{"$f":"SUM(#REF!)","v":{"$error":"#REF!"}},{"$f":"SUM(#REF!)","v":{"$error":"#REF!"}},{"$f":"SUM(#REF!)","v":{"$error":"#REF!"}},{"$f":"SUM(#REF!)","v":{"$error":"#REF!"}},{"$f":"SUM(#REF!)","v":{"$error":"#REF!"}},{"$f":"SUM(#REF!)","v":{"$error":"#REF!"}},{"$f":"SUM(#REF!)","v":{"$error":"#REF!"}},{"$f":"SUM(#REF!)","v":{"$error":"#REF!"}},{"$f":"SUM(#REF!)","v":{"$error":"#REF!"}},{"$f":"SUM(#REF!)","v":{"$error":"#REF!"}},{"$f":"SUM(#REF!)","v":{"$error":"#REF!"}},{"$f":"SUM(#REF!)","v":{"$error":"#REF!"}},{"$f":"SUM(#REF!)","v":{"$error":"#REF!"}},{"$f":"SUM(#REF!)","v":{"$error":"#REF!"}},{"$f":"SUM(#REF!)","v":{"$error":"#REF!"}},{"$f":"SUM(#REF!)","v":{"$error":"#REF!"}},{"$f":"SUM(#REF!)","v":{"$error":"#REF!"}},{"$f":"SUM(#REF!)","v":{"$error":"#REF!"}},{"$f":"SUM(#REF!)","v":{"$error":"#REF!"}},{"$f":"SUM(#REF!)","v":{"$error":"#REF!"}},{"$f":"SUM(#REF!)","v":{"$error":"#REF!"}},{"$f":"SUM(#REF!)","v":{"$error":"#REF!"}},{"$f":"SUM(#REF!)","v":{"$error":"#REF!"}},{"$f":"SUM(#REF!)","v":{"$error":"#REF!"}},{"$f":"SUM(#REF!)","v":{"$error":"#REF!"}},{"$f":"SUM(#REF!)","v":{"$error":"#REF!"}},{"$f":"SUM(#REF!)","v":{"$error":"#REF!"}},{"$f":"SUM(#REF!)","v":{"$error":"#REF!"}},{"$f":"SUM(#REF!)","v":{"$error":"#REF!"}},{"$f":"SUM(#REF!)","v":{"$error":"#REF!"}},{"$f":"SUM(#REF!)","v":{"$error":"#REF!"}},{"$f":"SUM(#REF!)","v":{"$error":"#REF!"}},{"$f":"SUM(#REF!)","v":{"$error":"#REF!"}},{"$f":"SUM(#REF!)","v":{"$error":"#REF!"}},{"$f":"SUM(#REF!)","v":{"$error":"#REF!"}},{"$f":"SUM(#REF!)","v":{"$error":"#REF!"}},{"$f":"SUM(#REF!)","v":{"$error":"#REF!"}},{"$f":"SUM(#REF!)","v":{"$error":"#REF!"}},{"$f":"SUM(#REF!)","v":{"$error":"#REF!"}},{"$f":"SUM(#REF!)","v":{"$error":"#REF!"}},{"$f":"SUM(#REF!)","v":{"$error":"#REF!"}},{"$f":"SUM(#REF!)","v":{"$error":"#REF!"}},{"$f":"SUM(#REF!)","v":{"$error":"#REF!"}},{"$f":"SUM(#REF!)","v":{"$error":"#REF!"}},{"$f":"SUM(#REF!)","v":{"$error":"#REF!"}},{"$f":"SUM(#REF!)","v":{"$error":"#REF!"}},{"$f":"SUM(#REF!)","v":{"$error":"#REF!"}},{"$f":"SUM(#REF!)","v":{"$error":"#REF!"}},{"$f":"SUM(#REF!)","v":{"$error":"#REF!"}},{"$f":"SUM(#REF!)","v":{"$error":"#REF!"}},{"$f":"SUM(#REF!)","v":{"$error":"#REF!"}},{"$f":"SUM(#REF!)","v":{"$error":"#REF!"}},{"$f":"SUM(#REF!)","v":{"$error":"#REF!"}},{"$f":"SUM(#REF!)","v":{"$error":"#REF!"}},{"$f":"SUM(#REF!)","v":{"$error":"#REF!"}},{"$f":"SUM(#REF!)","v":{"$error":"#REF!"}},{"$f":"SUM(#REF!)","v":{"$error":"#REF!"}},{"$f":"SUM(#REF!)","v":{"$error":"#REF!"}},{"$f":"SUM(#REF!)","v":{"$error":"#REF!"}},{"$f":"SUM(#REF!)","v":{"$error":"#REF!"}},{"$f":"SUM(#REF!)","v":{"$error":"#REF!"}},{"$f":"SUM(#REF!)","v":{"$error":"#REF!"}},{"$f":"SUM(#REF!)","v":{"$error":"#REF!"}},{"$f":"SUM(#REF!)","v":{"$error":"#REF!"}},{"$f":"SUM(#REF!)","v":{"$error":"#REF!"}},{"$f":"SUM(#REF!)","v":{"$error":"#REF!"}},{"$f":"SUM(#REF!)","v":{"$error":"#REF!"}},{"$f":"SUM(#REF!)","v":{"$error":"#REF!"}},{"$f":"SUM(#REF!)","v":{"$error":"#REF!"}},{"$f":"SUM(#REF!)","v":{"$error":"#REF!"}},{"$f":"SUM(#REF!)","v":{"$error":"#REF!"}},{"$f":"SUM(#REF!)","v":{"$error":"#REF!"}},{"$f":"SUM(#REF!)","v":{"$error":"#REF!"}},{"$f":"SUM(#REF!)","v":{"$error":"#REF!"}},{"$f":"SUM(#REF!)","v":{"$error":"#REF!"}},{"$f":"SUM(#REF!)","v":{"$error":"#REF!"}},{"$f":"SUM(#REF!)","v":{"$error":"#REF!"}},{"$f":"SUM(#REF!)","v":{"$error":"#REF!"}},{"$f":"SUM(#REF!)","v":{"$error":"#REF!"}},{"$f":"SUM(#REF!)","v":{"$error":"#REF!"}},{"$f":"SUM(#REF!)","v":{"$error":"#REF!"}},{"$f":"SUM(#REF!)","v":{"$error":"#REF!"}},{"$f":"SUM(#REF!)","v":{"$error":"#REF!"}},{"$f":"SUM(#REF!)","v":{"$error":"#REF!"}},{"$f":"SUM(#REF!)","v":{"$error":"#REF!"}},{"$f":"SUM(#REF!)","v":{"$error":"#REF!"}},{"$f":"SUM(#REF!)","v":{"$error":"#REF!"}},{"$f":"SUM(#REF!)","v":{"$error":"#REF!"}},{"$f":"SUM(#REF!)","v":{"$error":"#REF!"}},{"$f":"SUM(#REF!)","v":{"$error":"#REF!"}},{"$f":"SUM(#REF!)","v":{"$error":"#REF!"}},{"$f":"SUM(#REF!)","v":{"$error":"#REF!"}},{"$f":"SUM(#REF!)","v":{"$error":"#REF!"}},{"$f":"SUM(#REF!)","v":{"$error":"#REF!"}},{"$f":"SUM(#REF!)","v":{"$error":"#REF!"}},{"$f":"SUM(#REF!)","v":{"$error":"#REF!"}},{"$f":"SUM(#REF!)","v":{"$error":"#REF!"}},{"$f":"SUM(#REF!)","v":{"$error":"#REF!"}},{"$f":"SUM(#REF!)","v":{"$error":"#REF!"}},{"$f":"SUM(#REF!)","v":{"$error":"#REF!"}},{"$f":"SUM(#REF!)","v":{"$error":"#REF!"}},{"$f":"SUM(#REF!)","v":{"$error":"#REF!"}},{"$f":"SUM(#REF!)","v":{"$error":"#REF!"}},{"$f":"SUM(#REF!)","v":{"$error":"#REF!"}},{"$f":"SUM(#REF!)","v":{"$error":"#REF!"}},{"$f":"SUM(#REF!)","v":{"$error":"#REF!"}},{"$f":"SUM(#REF!)","v":{"$error":"#REF!"}},{"$f":"SUM(#REF!)","v":{"$error":"#REF!"}},{"$f":"SUM(#REF!)","v":{"$error":"#REF!"}},{"$f":"SUM(#REF!)","v":{"$error":"#REF!"}},{"$f":"SUM(#REF!)","v":{"$error":"#REF!"}},{"$f":"SUM(#REF!)","v":{"$error":"#REF!"}},{"$f":"SUM(#REF!)","v":{"$error":"#REF!"}},{"$f":"SUM(#REF!)","v":{"$error":"#REF!"}},{"$f":"SUM(#REF!)","v":{"$error":"#REF!"}},{"$f":"SUM(#REF!)","v":{"$error":"#REF!"}},{"$f":"SUM(#REF!)","v":{"$error":"#REF!"}},{"$f":"SUM(#REF!)","v":{"$error":"#REF!"}},{"$f":"SUM(#REF!)","v":{"$error":"#REF!"}},{"$f":"SUM(#REF!)","v":{"$error":"#REF!"}},{"$f":"SUM(#REF!)","v":{"$error":"#REF!"}},{"$f":"SUM(#REF!)","v":{"$error":"#REF!"}},{"$f":"SUM(#REF!)","v":{"$error":"#REF!"}},{"$f":"SUM(#REF!)","v":{"$error":"#REF!"}},{"$f":"SUM(#REF!)","v":{"$error":"#REF!"}},{"$f":"SUM(#REF!)","v":{"$error":"#REF!"}},{"$f":"SUM(#REF!)","v":{"$error":"#REF!"}},{"$f":"SUM(#REF!)","v":{"$error":"#REF!"}},{"$f":"SUM(#REF!)","v":{"$error":"#REF!"}},{"$f":"SUM(#REF!)","v":{"$error":"#REF!"}},{"$f":"SUM(#REF!)","v":{"$error":"#REF!"}},{"$f":"SUM(#REF!)","v":{"$error":"#REF!"}},{"$f":"SUM(#REF!)","v":{"$error":"#REF!"}},{"$f":"SUM(#REF!)","v":{"$error":"#REF!"}},{"$f":"SUM(#REF!)","v":{"$error":"#REF!"}},{"$f":"SUM(#REF!)","v":{"$error":"#REF!"}},{"$f":"SUM(#REF!)","v":{"$error":"#REF!"}},{"$f":"SUM(#REF!)","v":{"$error":"#REF!"}},{"$f":"SUM(#REF!)","v":{"$error":"#REF!"}},{"$f":"SUM(#REF!)","v":{"$error":"#REF!"}},{"$f":"SUM(#REF!)","v":{"$error":"#REF!"}},{"$f":"SUM(#REF!)","v":{"$error":"#REF!"}},{"$f":"SUM(#REF!)","v":{"$error":"#REF!"}},{"$f":"SUM(#REF!)","v":{"$error":"#REF!"}},{"$f":"SUM(#REF!)","v":{"$error":"#REF!"}},{"$f":"SUM(#REF!)","v":{"$error":"#REF!"}},{"$f":"SUM(#REF!)","v":{"$error":"#REF!"}},{"$f":"SUM(#REF!)","v":{"$error":"#REF!"}},{"$f":"SUM(#REF!)","v":{"$error":"#REF!"}},{"$f":"SUM(#REF!)","v":{"$error":"#REF!"}},{"$f":"SUM(#REF!)","v":{"$error":"#REF!"}},{"$f":"SUM(#REF!)","v":{"$error":"#REF!"}},{"$f":"SUM(#REF!)","v":{"$error":"#REF!"}},{"$f":"SUM(#REF!)","v":{"$error":"#REF!"}},{"$f":"SUM(#REF!)","v":{"$error":"#REF!"}},{"$f":"SUM(#REF!)","v":{"$error":"#REF!"}},{"$f":"SUM(#REF!)","v":{"$error":"#REF!"}},{"$f":"SUM(#REF!)","v":{"$error":"#REF!"}},{"$f":"SUM(#REF!)","v":{"$error":"#REF!"}},{"$f":"SUM(#REF!)","v":{"$error":"#REF!"}},{"$f":"SUM(#REF!)","v":{"$error":"#REF!"}},{"$f":"SUM(#REF!)","v":{"$error":"#REF!"}},{"$f":"SUM(#REF!)","v":{"$error":"#REF!"}},{"$f":"SUM(#REF!)","v":{"$error":"#REF!"}},{"$f":"SUM(#REF!)","v":{"$error":"#REF!"}},{"$f":"SUM(#REF!)","v":{"$error":"#REF!"}},{"$f":"SUM(#REF!)","v":{"$error":"#REF!"}},{"$f":"SUM(#REF!)","v":{"$error":"#REF!"}},{"$f":"SUM(#REF!)","v":{"$error":"#REF!"}},{"$f":"SUM(#REF!)","v":{"$error":"#REF!"}},{"$f":"SUM(#REF!)","v":{"$error":"#REF!"}},{"$f":"SUM(#REF!)","v":{"$error":"#REF!"}},{"$f":"SUM(#REF!)","v":{"$error":"#REF!"}},{"$f":"SUM(#REF!)","v":{"$error":"#REF!"}},{"$f":"SUM(#REF!)","v":{"$error":"#REF!"}},{"$f":"SUM(#REF!)","v":{"$error":"#REF!"}},{"$f":"SUM(#REF!)","v":{"$error":"#REF!"}},{"$f":"SUM(#REF!)","v":{"$error":"#REF!"}},{"$f":"SUM(#REF!)","v":{"$error":"#REF!"}},{"$f":"SUM(#REF!)","v":{"$error":"#REF!"}},{"$f":"SUM(#REF!)","v":{"$error":"#REF!"}},{"$f":"SUM(#REF!)","v":{"$error":"#REF!"}},{"$f":"SUM(#REF!)","v":{"$error":"#REF!"}},{"$f":"SUM(#REF!)","v":{"$error":"#REF!"}},{"$f":"SUM(#REF!)","v":{"$error":"#REF!"}},{"$f":"SUM(#REF!)","v":{"$error":"#REF!"}},{"$f":"SUM(#REF!)","v":{"$error":"#REF!"}},{"$f":"SUM(#REF!)","v":{"$error":"#REF!"}},{"$f":"SUM(#REF!)","v":{"$error":"#REF!"}},{"$f":"SUM(#REF!)","v":{"$error":"#REF!"}},{"$f":"SUM(#REF!)","v":{"$error":"#REF!"}},{"$f":"SUM(#REF!)","v":{"$error":"#REF!"}},{"$f":"SUM(#REF!)","v":{"$error":"#REF!"}},{"$f":"SUM(#REF!)","v":{"$error":"#REF!"}},{"$f":"SUM(#REF!)","v":{"$error":"#REF!"}},{"$f":"SUM(#REF!)","v":{"$error":"#REF!"}},{"$f":"SUM(#REF!)","v":{"$error":"#REF!"}},{"$f":"SUM(#REF!)","v":{"$error":"#REF!"}},{"$f":"SUM(#REF!)","v":{"$error":"#REF!"}},{"$f":"SUM(#REF!)","v":{"$error":"#REF!"}},{"$f":"SUM(#REF!)","v":{"$error":"#REF!"}},{"$f":"SUM(#REF!)","v":{"$error":"#REF!"}},{"$f":"SUM(#REF!)","v":{"$error":"#REF!"}},{"$f":"SUM(#REF!)","v":{"$error":"#REF!"}},{"$f":"SUM(#REF!)","v":{"$error":"#REF!"}},{"$f":"SUM(#REF!)","v":{"$error":"#REF!"}},{"$f":"SUM(#REF!)","v":{"$error":"#REF!"}},{"$f":"SUM(#REF!)","v":{"$error":"#REF!"}},{"$f":"SUM(#REF!)","v":{"$error":"#REF!"}},{"$f":"SUM(#REF!)","v":{"$error":"#REF!"}},{"$f":"SUM(#REF!)","v":{"$error":"#REF!"}},{"$f":"SUM(#REF!)","v":{"$error":"#REF!"}},{"$f":"SUM(#REF!)","v":{"$error":"#REF!"}},{"$f":"SUM(#REF!)","v":{"$error":"#REF!"}},{"$f":"SUM(#REF!)","v":{"$error":"#REF!"}},{"$f":"SUM(#REF!)","v":{"$error":"#REF!"}},{"$f":"SUM(#REF!)","v":{"$error":"#REF!"}},{"$f":"SUM(#REF!)","v":{"$error":"#REF!"}},{"$f":"SUM(#REF!)","v":{"$error":"#REF!"}},{"$f":"SUM(#REF!)","v":{"$error":"#REF!"}},{"$f":"SUM(#REF!)","v":{"$error":"#REF!"}},{"$f":"SUM(#REF!)","v":{"$error":"#REF!"}},{"$f":"SUM(#REF!)","v":{"$error":"#REF!"}},{"$f":"SUM(#REF!)","v":{"$error":"#REF!"}},{"$f":"SUM(#REF!)","v":{"$error":"#REF!"}},{"$f":"SUM(#REF!)","v":{"$error":"#REF!"}},{"$f":"SUM(#REF!)","v":{"$error":"#REF!"}},{"$f":"SUM(#REF!)","v":{"$error":"#REF!"}},{"$f":"SUM(#REF!)","v":{"$error":"#REF!"}},{"$f":"SUM(#REF!)","v":{"$error":"#REF!"}},{"$f":"SUM(#REF!)","v":{"$error":"#REF!"}},{"$f":"SUM(#REF!)","v":{"$error":"#REF!"}},{"$f":"SUM(#REF!)","v":{"$error":"#REF!"}},{"$f":"SUM(#REF!)","v":{"$error":"#REF!"}},{"$f":"SUM(#REF!)","v":{"$error":"#REF!"}},{"$f":"SUM(#REF!)","v":{"$error":"#REF!"}},{"$f":"SUM(#REF!)","v":{"$error":"#REF!"}},{"$f":"SUM(#REF!)","v":{"$error":"#REF!"}},{"$f":"SUM(#REF!)","v":{"$error":"#REF!"}},{"$f":"SUM(#REF!)","v":{"$error":"#REF!"}},{"$f":"SUM(#REF!)","v":{"$error":"#REF!"}},{"$f":"SUM(#REF!)","v":{"$error":"#REF!"}},{"$f":"SUM(#REF!)","v":{"$error":"#REF!"}},{"$f":"SUM(#REF!)","v":{"$error":"#REF!"}},{"$f":"SUM(#REF!)","v":{"$error":"#REF!"}},{"$f":"SUM(#REF!)","v":{"$error":"#REF!"}},{"$f":"SUM(#REF!)","v":{"$error":"#REF!"}},{"$f":"SUM(#REF!)","v":{"$error":"#REF!"}},{"$f":"SUM(#REF!)","v":{"$error":"#REF!"}},{"$f":"SUM(#REF!)","v":{"$error":"#REF!"}},{"$f":"SUM(#REF!)","v":{"$error":"#REF!"}},{"$f":"SUM(#REF!)","v":{"$error":"#REF!"}},{"$f":"SUM(#REF!)","v":{"$error":"#REF!"}},{"$f":"SUM(#REF!)","v":{"$error":"#REF!"}},{"$f":"SUM(#REF!)","v":{"$error":"#REF!"}},{"$f":"SUM(#REF!)","v":{"$error":"#REF!"}},{"$f":"SUM(#REF!)","v":{"$error":"#REF!"}},{"$f":"SUM(#REF!)","v":{"$error":"#REF!"}},{"$f":"SUM(#REF!)","v":{"$error":"#REF!"}},{"$f":"SUM(#REF!)","v":{"$error":"#REF!"}},{"$f":"SUM(#REF!)","v":{"$error":"#REF!"}},{"$f":"SUM(#REF!)","v":{"$error":"#REF!"}},{"$f":"SUM(#REF!)","v":{"$error":"#REF!"}},{"$f":"SUM(#REF!)","v":{"$error":"#REF!"}},{"$f":"SUM(#REF!)","v":{"$error":"#REF!"}},{"$f":"SUM(#REF!)","v":{"$error":"#REF!"}},{"$f":"SUM(#REF!)","v":{"$error":"#REF!"}},{"$f":"SUM(#REF!)","v":{"$error":"#REF!"}},{"$f":"SUM(#REF!)","v":{"$error":"#REF!"}},{"$f":"SUM(#REF!)","v":{"$error":"#REF!"}},{"$f":"SUM(#REF!)","v":{"$error":"#REF!"}},{"$f":"SUM(#REF!)","v":{"$error":"#REF!"}},{"$f":"SUM(#REF!)","v":{"$error":"#REF!"}},{"$f":"SUM(#REF!)","v":{"$error":"#REF!"}},{"$f":"SUM(#REF!)","v":{"$error":"#REF!"}},{"$f":"SUM(#REF!)","v":{"$error":"#REF!"}},{"$f":"SUM(#REF!)","v":{"$error":"#REF!"}},{"$f":"SUM(#REF!)","v":{"$error":"#REF!"}},{"$f":"SUM(#REF!)","v":{"$error":"#REF!"}},{"$f":"SUM(#REF!)","v":{"$error":"#REF!"}},{"$f":"SUM(#REF!)","v":{"$error":"#REF!"}},{"$f":"SUM(#REF!)","v":{"$error":"#REF!"}},{"$f":"SUM(#REF!)","v":{"$error":"#REF!"}},{"$f":"SUM(#REF!)","v":{"$error":"#REF!"}},{"$f":"SUM(#REF!)","v":{"$error":"#REF!"}},{"$f":"SUM(#REF!)","v":{"$error":"#REF!"}},{"$f":"SUM(#REF!)","v":{"$error":"#REF!"}},{"$f":"SUM(#REF!)","v":{"$error":"#REF!"}},{"$f":"SUM(#REF!)","v":{"$error":"#REF!"}},{"$f":"SUM(#REF!)","v":{"$error":"#REF!"}},{"$f":"SUM(#REF!)","v":{"$error":"#REF!"}},{"$f":"SUM(#REF!)","v":{"$error":"#REF!"}},{"$f":"SUM(#REF!)","v":{"$error":"#REF!"}},{"$f":"SUM(#REF!)","v":{"$error":"#REF!"}},{"$f":"SUM(#REF!)","v":{"$error":"#REF!"}},{"$f":"SUM(#REF!)","v":{"$error":"#REF!"}},{"$f":"SUM(#REF!)","v":{"$error":"#REF!"}},{"$f":"SUM(#REF!)","v":{"$error":"#REF!"}},{"$f":"SUM(#REF!)","v":{"$error":"#REF!"}},{"$f":"SUM(#REF!)","v":{"$error":"#REF!"}},{"$f":"SUM(#REF!)","v":{"$error":"#REF!"}},{"$f":"SUM(#REF!)","v":{"$error":"#REF!"}},{"$f":"SUM(#REF!)","v":{"$error":"#REF!"}},{"$f":"SUM(#REF!)","v":{"$error":"#REF!"}},{"$f":"SUM(#REF!)","v":{"$error":"#REF!"}},{"$f":"SUM(#REF!)","v":{"$error":"#REF!"}},{"$f":"SUM(#REF!)","v":{"$error":"#REF!"}},{"$f":"SUM(#REF!)","v":{"$error":"#REF!"}},{"$f":"SUM(#REF!)","v":{"$error":"#REF!"}},{"$f":"SUM(#REF!)","v":{"$error":"#REF!"}},{"$f":"SUM(#REF!)","v":{"$error":"#REF!"}},{"$f":"SUM(#REF!)","v":{"$error":"#REF!"}},{"$f":"SUM(#REF!)","v":{"$error":"#REF!"}},{"$f":"SUM(#REF!)","v":{"$error":"#REF!"}},{"$f":"SUM(#REF!)","v":{"$error":"#REF!"}},{"$f":"SUM(#REF!)","v":{"$error":"#REF!"}},{"$f":"SUM(#REF!)","v":{"$error":"#REF!"}},{"$f":"SUM(#REF!)","v":{"$error":"#REF!"}},{"$f":"SUM(#REF!)","v":{"$error":"#REF!"}},{"$f":"SUM(#REF!)","v":{"$error":"#REF!"}},{"$f":"SUM(#REF!)","v":{"$error":"#REF!"}},{"$f":"SUM(#REF!)","v":{"$error":"#REF!"}},{"$f":"SUM(#REF!)","v":{"$error":"#REF!"}},{"$f":"SUM(#REF!)","v":{"$error":"#REF!"}},{"$f":"SUM(#REF!)","v":{"$error":"#REF!"}},{"$f":"SUM(#REF!)","v":{"$error":"#REF!"}},{"$f":"SUM(#REF!)","v":{"$error":"#REF!"}},{"$f":"SUM(#REF!)","v":{"$error":"#REF!"}},{"$f":"SUM(#REF!)","v":{"$error":"#REF!"}},{"$f":"SUM(#REF!)","v":{"$error":"#REF!"}},{"$f":"SUM(#REF!)","v":{"$error":"#REF!"}},{"$f":"SUM(#REF!)","v":{"$error":"#REF!"}},{"$f":"SUM(#REF!)","v":{"$error":"#REF!"}},{"$f":"SUM(#REF!)","v":{"$error":"#REF!"}},{"$f":"SUM(#REF!)","v":{"$error":"#REF!"}},{"$f":"SUM(#REF!)","v":{"$error":"#REF!"}},{"$f":"SUM(#REF!)","v":{"$error":"#REF!"}},{"$f":"SUM(#REF!)","v":{"$error":"#REF!"}},{"$f":"SUM(#REF!)","v":{"$error":"#REF!"}},{"$f":"SUM(#REF!)","v":{"$error":"#REF!"}},{"$f":"SUM(#REF!)","v":{"$error":"#REF!"}},{"$f":"SUM(#REF!)","v":{"$error":"#REF!"}},{"$f":"SUM(#REF!)","v":{"$error":"#REF!"}},{"$f":"SUM(#REF!)","v":{"$error":"#REF!"}},{"$f":"SUM(#REF!)","v":{"$error":"#REF!"}},{"$f":"SUM(#REF!)","v":{"$error":"#REF!"}},{"$f":"SUM(#REF!)","v":{"$error":"#REF!"}},{"$f":"SUM(#REF!)","v":{"$error":"#REF!"}},{"$f":"SUM(#REF!)","v":{"$error":"#REF!"}},{"$f":"SUM(#REF!)","v":{"$error":"#REF!"}},{"$f":"SUM(#REF!)","v":{"$error":"#REF!"}},{"$f":"SUM(#REF!)","v":{"$error":"#REF!"}},{"$f":"SUM(#REF!)","v":{"$error":"#REF!"}},{"$f":"SUM(#REF!)","v":{"$error":"#REF!"}},{"$f":"SUM(#REF!)","v":{"$error":"#REF!"}},{"$f":"SUM(#REF!)","v":{"$error":"#REF!"}},{"$f":"SUM(#REF!)","v":{"$error":"#REF!"}},{"$f":"SUM(#REF!)","v":{"$error":"#REF!"}},{"$f":"SUM(#REF!)","v":{"$error":"#REF!"}},{"$f":"SUM(#REF!)","v":{"$error":"#REF!"}},{"$f":"SUM(#REF!)","v":{"$error":"#REF!"}},{"$f":"SUM(#REF!)","v":{"$error":"#REF!"}},{"$f":"SUM(#REF!)","v":{"$error":"#REF!"}},{"$f":"SUM(#REF!)","v":{"$error":"#REF!"}},{"$f":"SUM(#REF!)","v":{"$error":"#REF!"}},{"$f":"SUM(#REF!)","v":{"$error":"#REF!"}},{"$f":"SUM(#REF!)","v":{"$error":"#REF!"}},{"$f":"SUM(#REF!)","v":{"$error":"#REF!"}},{"$f":"SUM(#REF!)","v":{"$error":"#REF!"}},{"$f":"SUM(#REF!)","v":{"$error":"#REF!"}},{"$f":"SUM(#REF!)","v":{"$error":"#REF!"}},{"$f":"SUM(#REF!)","v":{"$error":"#REF!"}},{"$f":"SUM(#REF!)","v":{"$error":"#REF!"}},{"$f":"SUM(#REF!)","v":{"$error":"#REF!"}},{"$f":"SUM(#REF!)","v":{"$error":"#REF!"}},{"$f":"SUM(#REF!)","v":{"$error":"#REF!"}},{"$f":"SUM(#REF!)","v":{"$error":"#REF!"}},{"$f":"SUM(#REF!)","v":{"$error":"#REF!"}},{"$f":"SUM(#REF!)","v":{"$error":"#REF!"}},{"$f":"SUM(#REF!)","v":{"$error":"#REF!"}},{"$f":"SUM(#REF!)","v":{"$error":"#REF!"}},{"$f":"SUM(#REF!)","v":{"$error":"#REF!"}},{"$f":"SUM(#REF!)","v":{"$error":"#REF!"}},{"$f":"SUM(#REF!)","v":{"$error":"#REF!"}},{"$f":"SUM(#REF!)","v":{"$error":"#REF!"}},{"$f":"SUM(#REF!)","v":{"$error":"#REF!"}},{"$f":"SUM(#REF!)","v":{"$error":"#REF!"}},{"$f":"SUM(#REF!)","v":{"$error":"#REF!"}},{"$f":"SUM(#REF!)","v":{"$error":"#REF!"}},{"$f":"SUM(#REF!)","v":{"$error":"#REF!"}},{"$f":"SUM(#REF!)","v":{"$error":"#REF!"}},{"$f":"SUM(#REF!)","v":{"$error":"#REF!"}},{"$f":"SUM(#REF!)","v":{"$error":"#REF!"}},{"$f":"SUM(#REF!)","v":{"$error":"#REF!"}},{"$f":"SUM(#REF!)","v":{"$error":"#REF!"}},{"$f":"SUM(#REF!)","v":{"$error":"#REF!"}},{"$f":"SUM(#REF!)","v":{"$error":"#REF!"}},{"$f":"SUM(#REF!)","v":{"$error":"#REF!"}},{"$f":"SUM(#REF!)","v":{"$error":"#REF!"}},{"$f":"SUM(#REF!)","v":{"$error":"#REF!"}},{"$f":"SUM(#REF!)","v":{"$error":"#REF!"}},{"$f":"SUM(#REF!)","v":{"$error":"#REF!"}},{"$f":"SUM(#REF!)","v":{"$error":"#REF!"}},{"$f":"SUM(#REF!)","v":{"$error":"#REF!"}},{"$f":"SUM(#REF!)","v":{"$error":"#REF!"}},{"$f":"SUM(#REF!)","v":{"$error":"#REF!"}},{"$f":"SUM(#REF!)","v":{"$error":"#REF!"}},{"$f":"SUM(#REF!)","v":{"$error":"#REF!"}},{"$f":"SUM(#REF!)","v":{"$error":"#REF!"}},{"$f":"SUM(#REF!)","v":{"$error":"#REF!"}},{"$f":"SUM(#REF!)","v":{"$error":"#REF!"}},{"$f":"SUM(#REF!)","v":{"$error":"#REF!"}},{"$f":"SUM(#REF!)","v":{"$error":"#REF!"}},{"$f":"SUM(#REF!)","v":{"$error":"#REF!"}},{"$f":"SUM(#REF!)","v":{"$error":"#REF!"}},{"$f":"SUM(#REF!)","v":{"$error":"#REF!"}},{"$f":"SUM(#REF!)","v":{"$error":"#REF!"}},{"$f":"SUM(#REF!)","v":{"$error":"#REF!"}},{"$f":"SUM(#REF!)","v":{"$error":"#REF!"}},{"$f":"SUM(#REF!)","v":{"$error":"#REF!"}},{"$f":"SUM(#REF!)","v":{"$error":"#REF!"}},{"$f":"SUM(#REF!)","v":{"$error":"#REF!"}},{"$f":"SUM(#REF!)","v":{"$error":"#REF!"}},{"$f":"SUM(#REF!)","v":{"$error":"#REF!"}},{"$f":"SUM(#REF!)","v":{"$error":"#REF!"}},{"$f":"SUM(#REF!)","v":{"$error":"#REF!"}},{"$f":"SUM(#REF!)","v":{"$error":"#REF!"}},{"$f":"SUM(#REF!)","v":{"$error":"#REF!"}},{"$f":"SUM(#REF!)","v":{"$error":"#REF!"}},{"$f":"SUM(#REF!)","v":{"$error":"#REF!"}},{"$f":"SUM(#REF!)","v":{"$error":"#REF!"}},{"$f":"SUM(#REF!)","v":{"$error":"#REF!"}},{"$f":"SUM(#REF!)","v":{"$error":"#REF!"}},{"$f":"SUM(#REF!)","v":{"$error":"#REF!"}},{"$f":"SUM(#REF!)","v":{"$error":"#REF!"}},{"$f":"SUM(#REF!)","v":{"$error":"#REF!"}},{"$f":"SUM(#REF!)","v":{"$error":"#REF!"}},{"$f":"SUM(#REF!)","v":{"$error":"#REF!"}},{"$f":"SUM(#REF!)","v":{"$error":"#REF!"}},{"$f":"SUM(#REF!)","v":{"$error":"#REF!"}},{"$f":"SUM(#REF!)","v":{"$error":"#REF!"}},{"$f":"SUM(#REF!)","v":{"$error":"#REF!"}},{"$f":"SUM(#REF!)","v":{"$error":"#REF!"}},{"$f":"SUM(#REF!)","v":{"$error":"#REF!"}},{"$f":"SUM(#REF!)","v":{"$error":"#REF!"}},{"$f":"SUM(#REF!)","v":{"$error":"#REF!"}},{"$f":"SUM(#REF!)","v":{"$error":"#REF!"}},{"$f":"SUM(#REF!)","v":{"$error":"#REF!"}},{"$f":"SUM(#REF!)","v":{"$error":"#REF!"}},{"$f":"SUM(#REF!)","v":{"$error":"#REF!"}},{"$f":"SUM(#REF!)","v":{"$error":"#REF!"}},{"$f":"SUM(#REF!)","v":{"$error":"#REF!"}},{"$f":"SUM(#REF!)","v":{"$error":"#REF!"}},{"$f":"SUM(#REF!)","v":{"$error":"#REF!"}},{"$f":"SUM(#REF!)","v":{"$error":"#REF!"}},{"$f":"SUM(#REF!)","v":{"$error":"#REF!"}},{"$f":"SUM(#REF!)","v":{"$error":"#REF!"}},{"$f":"SUM(#REF!)","v":{"$error":"#REF!"}},{"$f":"SUM(#REF!)","v":{"$error":"#REF!"}},{"$f":"SUM(#REF!)","v":{"$error":"#REF!"}},{"$f":"SUM(#REF!)","v":{"$error":"#REF!"}},{"$f":"SUM(#REF!)","v":{"$error":"#REF!"}},{"$f":"SUM(#REF!)","v":{"$error":"#REF!"}},{"$f":"SUM(#REF!)","v":{"$error":"#REF!"}},{"$f":"SUM(#REF!)","v":{"$error":"#REF!"}},{"$f":"SUM(#REF!)","v":{"$error":"#REF!"}},{"$f":"SUM(#REF!)","v":{"$error":"#REF!"}},{"$f":"SUM(#REF!)","v":{"$error":"#REF!"}},{"$f":"SUM(#REF!)","v":{"$error":"#REF!"}},{"$f":"SUM(#REF!)","v":{"$error":"#REF!"}},{"$f":"SUM(#REF!)","v":{"$error":"#REF!"}},{"$f":"SUM(#REF!)","v":{"$error":"#REF!"}},{"$f":"SUM(#REF!)","v":{"$error":"#REF!"}},{"$f":"SUM(#REF!)","v":{"$error":"#REF!"}},{"$f":"SUM(#REF!)","v":{"$error":"#REF!"}},{"$f":"SUM(#REF!)","v":{"$error":"#REF!"}},{"$f":"SUM(#REF!)","v":{"$error":"#REF!"}},{"$f":"SUM(#REF!)","v":{"$error":"#REF!"}},{"$f":"SUM(#REF!)","v":{"$error":"#REF!"}},{"$f":"SUM(#REF!)","v":{"$error":"#REF!"}},{"$f":"SUM(#REF!)","v":{"$error":"#REF!"}},{"$f":"SUM(#REF!)","v":{"$error":"#REF!"}},{"$f":"SUM(#REF!)","v":{"$error":"#REF!"}},{"$f":"SUM(#REF!)","v":{"$error":"#REF!"}},{"$f":"SUM(#REF!)","v":{"$error":"#REF!"}},{"$f":"SUM(#REF!)","v":{"$error":"#REF!"}},{"$f":"SUM(#REF!)","v":{"$error":"#REF!"}},{"$f":"SUM(#REF!)","v":{"$error":"#REF!"}},{"$f":"SUM(#REF!)","v":{"$error":"#REF!"}},{"$f":"SUM(#REF!)","v":{"$error":"#REF!"}},{"$f":"SUM(#REF!)","v":{"$error":"#REF!"}},{"$f":"SUM(#REF!)","v":{"$error":"#REF!"}},{"$f":"SUM(#REF!)","v":{"$error":"#REF!"}},{"$f":"SUM(#REF!)","v":{"$error":"#REF!"}},{"$f":"SUM(#REF!)","v":{"$error":"#REF!"}},{"$f":"SUM(#REF!)","v":{"$error":"#REF!"}},{"$f":"SUM(#REF!)","v":{"$error":"#REF!"}},{"$f":"SUM(#REF!)","v":{"$error":"#REF!"}},{"$f":"SUM(#REF!)","v":{"$error":"#REF!"}},{"$f":"SUM(#REF!)","v":{"$error":"#REF!"}},{"$f":"SUM(#REF!)","v":{"$error":"#REF!"}},{"$f":"SUM(#REF!)","v":{"$error":"#REF!"}},{"$f":"SUM(#REF!)","v":{"$error":"#REF!"}},{"$f":"SUM(#REF!)","v":{"$error":"#REF!"}},{"$f":"SUM(#REF!)","v":{"$error":"#REF!"}},{"$f":"SUM(#REF!)","v":{"$error":"#REF!"}},{"$f":"SUM(#REF!)","v":{"$error":"#REF!"}},{"$f":"SUM(#REF!)","v":{"$error":"#REF!"}},{"$f":"SUM(#REF!)","v":{"$error":"#REF!"}},{"$f":"SUM(#REF!)","v":{"$error":"#REF!"}},{"$f":"SUM(#REF!)","v":{"$error":"#REF!"}},{"$f":"SUM(#REF!)","v":{"$error":"#REF!"}},{"$f":"SUM(#REF!)","v":{"$error":"#REF!"}},{"$f":"SUM(#REF!)","v":{"$error":"#REF!"}},{"$f":"SUM(#REF!)","v":{"$error":"#REF!"}},{"$f":"SUM(#REF!)","v":{"$error":"#REF!"}},{"$f":"SUM(#REF!)","v":{"$error":"#REF!"}},{"$f":"SUM(#REF!)","v":{"$error":"#REF!"}},{"$f":"SUM(#REF!)","v":{"$error":"#REF!"}},{"$f":"SUM(#REF!)","v":{"$error":"#REF!"}},{"$f":"SUM(#REF!)","v":{"$error":"#REF!"}},{"$f":"SUM(#REF!)","v":{"$error":"#REF!"}},{"$f":"SUM(#REF!)","v":{"$error":"#REF!"}},{"$f":"SUM(#REF!)","v":{"$error":"#REF!"}},{"$f":"SUM(#REF!)","v":{"$error":"#REF!"}},{"$f":"SUM(#REF!)","v":{"$error":"#REF!"}},{"$f":"SUM(#REF!)","v":{"$error":"#REF!"}},{"$f":"SUM(#REF!)","v":{"$error":"#REF!"}},{"$f":"SUM(#REF!)","v":{"$error":"#REF!"}},{"$f":"SUM(#REF!)","v":{"$error":"#REF!"}},{"$f":"SUM(#REF!)","v":{"$error":"#REF!"}},{"$f":"SUM(#REF!)","v":{"$error":"#REF!"}},{"$f":"SUM(#REF!)","v":{"$error":"#REF!"}},{"$f":"SUM(#REF!)","v":{"$error":"#REF!"}},{"$f":"SUM(#REF!)","v":{"$error":"#REF!"}},{"$f":"SUM(#REF!)","v":{"$error":"#REF!"}},{"$f":"SUM(#REF!)","v":{"$error":"#REF!"}},{"$f":"SUM(#REF!)","v":{"$error":"#REF!"}},{"$f":"SUM(#REF!)","v":{"$error":"#REF!"}},{"$f":"SUM(#REF!)","v":{"$error":"#REF!"}},{"$f":"SUM(#REF!)","v":{"$error":"#REF!"}},{"$f":"SUM(#REF!)","v":{"$error":"#REF!"}},{"$f":"SUM(#REF!)","v":{"$error":"#REF!"}},{"$f":"SUM(#REF!)","v":{"$error":"#REF!"}},{"$f":"SUM(#REF!)","v":{"$error":"#REF!"}},{"$f":"SUM(#REF!)","v":{"$error":"#REF!"}},{"$f":"SUM(#REF!)","v":{"$error":"#REF!"}},{"$f":"SUM(#REF!)","v":{"$error":"#REF!"}},{"$f":"SUM(#REF!)","v":{"$error":"#REF!"}},{"$f":"SUM(#REF!)","v":{"$error":"#REF!"}},{"$f":"SUM(#REF!)","v":{"$error":"#REF!"}},{"$f":"SUM(#REF!)","v":{"$error":"#REF!"}},{"$f":"SUM(#REF!)","v":{"$error":"#REF!"}},{"$f":"SUM(#REF!)","v":{"$error":"#REF!"}},{"$f":"SUM(#REF!)","v":{"$error":"#REF!"}},{"$f":"SUM(#REF!)","v":{"$error":"#REF!"}},{"$f":"SUM(#REF!)","v":{"$error":"#REF!"}},{"$f":"SUM(#REF!)","v":{"$error":"#REF!"}},{"$f":"SUM(#REF!)","v":{"$error":"#REF!"}},{"$f":"SUM(#REF!)","v":{"$error":"#REF!"}},{"$f":"SUM(#REF!)","v":{"$error":"#REF!"}},{"$f":"SUM(#REF!)","v":{"$error":"#REF!"}},{"$f":"SUM(#REF!)","v":{"$error":"#REF!"}},{"$f":"SUM(#REF!)","v":{"$error":"#REF!"}},{"$f":"SUM(#REF!)","v":{"$error":"#REF!"}},{"$f":"SUM(#REF!)","v":{"$error":"#REF!"}},{"$f":"SUM(#REF!)","v":{"$error":"#REF!"}},{"$f":"SUM(#REF!)","v":{"$error":"#REF!"}},{"$f":"SUM(#REF!)","v":{"$error":"#REF!"}},{"$f":"SUM(#REF!)","v":{"$error":"#REF!"}},{"$f":"SUM(#REF!)","v":{"$error":"#REF!"}},{"$f":"SUM(#REF!)","v":{"$error":"#REF!"}},{"$f":"SUM(#REF!)","v":{"$error":"#REF!"}},{"$f":"SUM(#REF!)","v":{"$error":"#REF!"}},{"$f":"SUM(#REF!)","v":{"$error":"#REF!"}},{"$f":"SUM(#REF!)","v":{"$error":"#REF!"}},{"$f":"SUM(#REF!)","v":{"$error":"#REF!"}},{"$f":"SUM(#REF!)","v":{"$error":"#REF!"}},{"$f":"SUM(#REF!)","v":{"$error":"#REF!"}},{"$f":"SUM(#REF!)","v":{"$error":"#REF!"}},{"$f":"SUM(#REF!)","v":{"$error":"#REF!"}},{"$f":"SUM(#REF!)","v":{"$error":"#REF!"}},{"$f":"SUM(#REF!)","v":{"$error":"#REF!"}},{"$f":"SUM(#REF!)","v":{"$error":"#REF!"}},{"$f":"SUM(#REF!)","v":{"$error":"#REF!"}},{"$f":"SUM(#REF!)","v":{"$error":"#REF!"}},{"$f":"SUM(#REF!)","v":{"$error":"#REF!"}},{"$f":"SUM(#REF!)","v":{"$error":"#REF!"}},{"$f":"SUM(#REF!)","v":{"$error":"#REF!"}},{"$f":"SUM(#REF!)","v":{"$error":"#REF!"}},{"$f":"SUM(#REF!)","v":{"$error":"#REF!"}},{"$f":"SUM(#REF!)","v":{"$error":"#REF!"}},{"$f":"SUM(#REF!)","v":{"$error":"#REF!"}},{"$f":"SUM(#REF!)","v":{"$error":"#REF!"}},{"$f":"SUM(#REF!)","v":{"$error":"#REF!"}},{"$f":"SUM(#REF!)","v":{"$error":"#REF!"}},{"$f":"SUM(#REF!)","v":{"$error":"#REF!"}},{"$f":"SUM(#REF!)","v":{"$error":"#REF!"}},{"$f":"SUM(#REF!)","v":{"$error":"#REF!"}},{"$f":"SUM(#REF!)","v":{"$error":"#REF!"}},{"$f":"SUM(#REF!)","v":{"$error":"#REF!"}},{"$f":"SUM(#REF!)","v":{"$error":"#REF!"}},{"$f":"SUM(#REF!)","v":{"$error":"#REF!"}},{"$f":"SUM(#REF!)","v":{"$error":"#REF!"}},{"$f":"SUM(#REF!)","v":{"$error":"#REF!"}},{"$f":"SUM(#REF!)","v":{"$error":"#REF!"}},{"$f":"SUM(#REF!)","v":{"$error":"#REF!"}},{"$f":"SUM(#REF!)","v":{"$error":"#REF!"}},{"$f":"SUM(#REF!)","v":{"$error":"#REF!"}},{"$f":"SUM(#REF!)","v":{"$error":"#REF!"}},{"$f":"SUM(#REF!)","v":{"$error":"#REF!"}},{"$f":"SUM(#REF!)","v":{"$error":"#REF!"}},{"$f":"SUM(#REF!)","v":{"$error":"#REF!"}},{"$f":"SUM(#REF!)","v":{"$error":"#REF!"}},{"$f":"SUM(#REF!)","v":{"$error":"#REF!"}},{"$f":"SUM(#REF!)","v":{"$error":"#REF!"}},{"$f":"SUM(#REF!)","v":{"$error":"#REF!"}},{"$f":"SUM(#REF!)","v":{"$error":"#REF!"}},{"$f":"SUM(#REF!)","v":{"$error":"#REF!"}},{"$f":"SUM(#REF!)","v":{"$error":"#REF!"}},{"$f":"SUM(#REF!)","v":{"$error":"#REF!"}},{"$f":"SUM(#REF!)","v":{"$error":"#REF!"}},{"$f":"SUM(#REF!)","v":{"$error":"#REF!"}},{"$f":"SUM(#REF!)","v":{"$error":"#REF!"}},{"$f":"SUM(#REF!)","v":{"$error":"#REF!"}},{"$f":"SUM(#REF!)","v":{"$error":"#REF!"}},{"$f":"SUM(#REF!)","v":{"$error":"#REF!"}},{"$f":"SUM(#REF!)","v":{"$error":"#REF!"}},{"$f":"SUM(#REF!)","v":{"$error":"#REF!"}},{"$f":"SUM(#REF!)","v":{"$error":"#REF!"}},{"$f":"SUM(#REF!)","v":{"$error":"#REF!"}},{"$f":"SUM(#REF!)","v":{"$error":"#REF!"}},{"$f":"SUM(#REF!)","v":{"$error":"#REF!"}},{"$f":"SUM(#REF!)","v":{"$error":"#REF!"}},{"$f":"SUM(#REF!)","v":{"$error":"#REF!"}},{"$f":"SUM(#REF!)","v":{"$error":"#REF!"}},{"$f":"SUM(#REF!)","v":{"$error":"#REF!"}},{"$f":"SUM(#REF!)","v":{"$error":"#REF!"}},{"$f":"SUM(#REF!)","v":{"$error":"#REF!"}},{"$f":"SUM(#REF!)","v":{"$error":"#REF!"}},{"$f":"SUM(#REF!)","v":{"$error":"#REF!"}},{"$f":"SUM(#REF!)","v":{"$error":"#REF!"}},{"$f":"SUM(#REF!)","v":{"$error":"#REF!"}},{"$f":"SUM(#REF!)","v":{"$error":"#REF!"}},{"$f":"SUM(#REF!)","v":{"$error":"#REF!"}},{"$f":"SUM(#REF!)","v":{"$error":"#REF!"}},{"$f":"SUM(#REF!)","v":{"$error":"#REF!"}},{"$f":"SUM(#REF!)","v":{"$error":"#REF!"}},{"$f":"SUM(#REF!)","v":{"$error":"#REF!"}},{"$f":"SUM(#REF!)","v":{"$error":"#REF!"}},{"$f":"SUM(#REF!)","v":{"$error":"#REF!"}},{"$f":"SUM(#REF!)","v":{"$error":"#REF!"}},{"$f":"SUM(#REF!)","v":{"$error":"#REF!"}},{"$f":"SUM(#REF!)","v":{"$error":"#REF!"}},{"$f":"SUM(#REF!)","v":{"$error":"#REF!"}},{"$f":"SUM(#REF!)","v":{"$error":"#REF!"}},{"$f":"SUM(#REF!)","v":{"$error":"#REF!"}},{"$f":"SUM(#REF!)","v":{"$error":"#REF!"}},{"$f":"SUM(#REF!)","v":{"$error":"#REF!"}},{"$f":"SUM(#REF!)","v":{"$error":"#REF!"}},{"$f":"SUM(#REF!)","v":{"$error":"#REF!"}},{"$f":"SUM(#REF!)","v":{"$error":"#REF!"}},{"$f":"SUM(#REF!)","v":{"$error":"#REF!"}},{"$f":"SUM(#REF!)","v":{"$error":"#REF!"}},{"$f":"SUM(#REF!)","v":{"$error":"#REF!"}},{"$f":"SUM(#REF!)","v":{"$error":"#REF!"}},{"$f":"SUM(#REF!)","v":{"$error":"#REF!"}},{"$f":"SUM(#REF!)","v":{"$error":"#REF!"}},{"$f":"SUM(#REF!)","v":{"$error":"#REF!"}},{"$f":"SUM(#REF!)","v":{"$error":"#REF!"}},{"$f":"SUM(#REF!)","v":{"$error":"#REF!"}},{"$f":"SUM(#REF!)","v":{"$error":"#REF!"}},{"$f":"SUM(#REF!)","v":{"$error":"#REF!"}},{"$f":"SUM(#REF!)","v":{"$error":"#REF!"}},{"$f":"SUM(#REF!)","v":{"$error":"#REF!"}},{"$f":"SUM(#REF!)","v":{"$error":"#REF!"}},{"$f":"SUM(#REF!)","v":{"$error":"#REF!"}},{"$f":"SUM(#REF!)","v":{"$error":"#REF!"}},{"$f":"SUM(#REF!)","v":{"$error":"#REF!"}},{"$f":"SUM(#REF!)","v":{"$error":"#REF!"}},{"$f":"SUM(#REF!)","v":{"$error":"#REF!"}},{"$f":"SUM(#REF!)","v":{"$error":"#REF!"}},{"$f":"SUM(#REF!)","v":{"$error":"#REF!"}},{"$f":"SUM(#REF!)","v":{"$error":"#REF!"}},{"$f":"SUM(#REF!)","v":{"$error":"#REF!"}},{"$f":"SUM(#REF!)","v":{"$error":"#REF!"}},{"$f":"SUM(#REF!)","v":{"$error":"#REF!"}},{"$f":"SUM(#REF!)","v":{"$error":"#REF!"}},{"$f":"SUM(#REF!)","v":{"$error":"#REF!"}},{"$f":"SUM(#REF!)","v":{"$error":"#REF!"}},{"$f":"SUM(#REF!)","v":{"$error":"#REF!"}},{"$f":"SUM(#REF!)","v":{"$error":"#REF!"}},{"$f":"SUM(#REF!)","v":{"$error":"#REF!"}},{"$f":"SUM(#REF!)","v":{"$error":"#REF!"}},{"$f":"SUM(#REF!)","v":{"$error":"#REF!"}},{"$f":"SUM(#REF!)","v":{"$error":"#REF!"}},{"$f":"SUM(#REF!)","v":{"$error":"#REF!"}},{"$f":"SUM(#REF!)","v":{"$error":"#REF!"}},{"$f":"SUM(#REF!)","v":{"$error":"#REF!"}},{"$f":"SUM(#REF!)","v":{"$error":"#REF!"}},{"$f":"SUM(#REF!)","v":{"$error":"#REF!"}},{"$f":"SUM(#REF!)","v":{"$error":"#REF!"}},{"$f":"SUM(#REF!)","v":{"$error":"#REF!"}},{"$f":"SUM(#REF!)","v":{"$error":"#REF!"}},{"$f":"SUM(#REF!)","v":{"$error":"#REF!"}},{"$f":"SUM(#REF!)","v":{"$error":"#REF!"}},{"$f":"SUM(#REF!)","v":{"$error":"#REF!"}},{"$f":"SUM(#REF!)","v":{"$error":"#REF!"}},{"$f":"SUM(#REF!)","v":{"$error":"#REF!"}},{"$f":"SUM(#REF!)","v":{"$error":"#REF!"}},{"$f":"SUM(#REF!)","v":{"$error":"#REF!"}},{"$f":"SUM(#REF!)","v":{"$error":"#REF!"}},{"$f":"SUM(#REF!)","v":{"$error":"#REF!"}},{"$f":"SUM(#REF!)","v":{"$error":"#REF!"}},{"$f":"SUM(#REF!)","v":{"$error":"#REF!"}},{"$f":"SUM(#REF!)","v":{"$error":"#REF!"}},{"$f":"SUM(#REF!)","v":{"$error":"#REF!"}},{"$f":"SUM(#REF!)","v":{"$error":"#REF!"}},{"$f":"SUM(#REF!)","v":{"$error":"#REF!"}},{"$f":"SUM(#REF!)","v":{"$error":"#REF!"}},{"$f":"SUM(#REF!)","v":{"$error":"#REF!"}},{"$f":"SUM(#REF!)","v":{"$error":"#REF!"}},{"$f":"SUM(#REF!)","v":{"$error":"#REF!"}},{"$f":"SUM(#REF!)","v":{"$error":"#REF!"}},{"$f":"SUM(#REF!)","v":{"$error":"#REF!"}},{"$f":"SUM(#REF!)","v":{"$error":"#REF!"}},{"$f":"SUM(#REF!)","v":{"$error":"#REF!"}},{"$f":"SUM(#REF!)","v":{"$error":"#REF!"}},{"$f":"SUM(#REF!)","v":{"$error":"#REF!"}},{"$f":"SUM(#REF!)","v":{"$error":"#REF!"}},{"$f":"SUM(#REF!)","v":{"$error":"#REF!"}},{"$f":"SUM(#REF!)","v":{"$error":"#REF!"}},{"$f":"SUM(#REF!)","v":{"$error":"#REF!"}},{"$f":"SUM(#REF!)","v":{"$error":"#REF!"}},{"$f":"SUM(#REF!)","v":{"$error":"#REF!"}},{"$f":"SUM(#REF!)","v":{"$error":"#REF!"}},{"$f":"SUM(#REF!)","v":{"$error":"#REF!"}},{"$f":"SUM(#REF!)","v":{"$error":"#REF!"}},{"$f":"SUM(#REF!)","v":{"$error":"#REF!"}},{"$f":"SUM(#REF!)","v":{"$error":"#REF!"}},{"$f":"SUM(#REF!)","v":{"$error":"#REF!"}},{"$f":"SUM(#REF!)","v":{"$error":"#REF!"}},{"$f":"SUM(#REF!)","v":{"$error":"#REF!"}},{"$f":"SUM(#REF!)","v":{"$error":"#REF!"}},{"$f":"SUM(#REF!)","v":{"$error":"#REF!"}},{"$f":"SUM(#REF!)","v":{"$error":"#REF!"}},{"$f":"SUM(#REF!)","v":{"$error":"#REF!"}},{"$f":"SUM(#REF!)","v":{"$error":"#REF!"}},{"$f":"SUM(#REF!)","v":{"$error":"#REF!"}},{"$f":"SUM(#REF!)","v":{"$error":"#REF!"}},{"$f":"SUM(#REF!)","v":{"$error":"#REF!"}},{"$f":"SUM(#REF!)","v":{"$error":"#REF!"}},{"$f":"SUM(#REF!)","v":{"$error":"#REF!"}},{"$f":"SUM(#REF!)","v":{"$error":"#REF!"}},{"$f":"SUM(#REF!)","v":{"$error":"#REF!"}},{"$f":"SUM(#REF!)","v":{"$error":"#REF!"}},{"$f":"SUM(#REF!)","v":{"$error":"#REF!"}},{"$f":"SUM(#REF!)","v":{"$error":"#REF!"}},{"$f":"SUM(#REF!)","v":{"$error":"#REF!"}},{"$f":"SUM(#REF!)","v":{"$error":"#REF!"}},{"$f":"SUM(#REF!)","v":{"$error":"#REF!"}},{"$f":"SUM(#REF!)","v":{"$error":"#REF!"}},{"$f":"SUM(#REF!)","v":{"$error":"#REF!"}},{"$f":"SUM(#REF!)","v":{"$error":"#REF!"}},{"$f":"SUM(#REF!)","v":{"$error":"#REF!"}},{"$f":"SUM(#REF!)","v":{"$error":"#REF!"}},{"$f":"SUM(#REF!)","v":{"$error":"#REF!"}},{"$f":"SUM(#REF!)","v":{"$error":"#REF!"}},{"$f":"SUM(#REF!)","v":{"$error":"#REF!"}},{"$f":"SUM(#REF!)","v":{"$error":"#REF!"}},{"$f":"SUM(#REF!)","v":{"$error":"#REF!"}},{"$f":"SUM(#REF!)","v":{"$error":"#REF!"}},{"$f":"SUM(#REF!)","v":{"$error":"#REF!"}},{"$f":"SUM(#REF!)","v":{"$error":"#REF!"}},{"$f":"SUM(#REF!)","v":{"$error":"#REF!"}},{"$f":"SUM(#REF!)","v":{"$error":"#REF!"}},{"$f":"SUM(#REF!)","v":{"$error":"#REF!"}},{"$f":"SUM(#REF!)","v":{"$error":"#REF!"}},{"$f":"SUM(#REF!)","v":{"$error":"#REF!"}},{"$f":"SUM(#REF!)","v":{"$error":"#REF!"}},{"$f":"SUM(#REF!)","v":{"$error":"#REF!"}},{"$f":"SUM(#REF!)","v":{"$error":"#REF!"}},{"$f":"SUM(#REF!)","v":{"$error":"#REF!"}},{"$f":"SUM(#REF!)","v":{"$error":"#REF!"}},{"$f":"SUM(#REF!)","v":{"$error":"#REF!"}},{"$f":"SUM(#REF!)","v":{"$error":"#REF!"}},{"$f":"SUM(#REF!)","v":{"$error":"#REF!"}},{"$f":"SUM(#REF!)","v":{"$error":"#REF!"}},{"$f":"SUM(#REF!)","v":{"$error":"#REF!"}},{"$f":"SUM(#REF!)","v":{"$error":"#REF!"}},{"$f":"SUM(#REF!)","v":{"$error":"#REF!"}},{"$f":"SUM(#REF!)","v":{"$error":"#REF!"}},{"$f":"SUM(#REF!)","v":{"$error":"#REF!"}},{"$f":"SUM(#REF!)","v":{"$error":"#REF!"}},{"$f":"SUM(#REF!)","v":{"$error":"#REF!"}},{"$f":"SUM(#REF!)","v":{"$error":"#REF!"}},{"$f":"SUM(#REF!)","v":{"$error":"#REF!"}},{"$f":"SUM(#REF!)","v":{"$error":"#REF!"}},{"$f":"SUM(#REF!)","v":{"$error":"#REF!"}},{"$f":"SUM(#REF!)","v":{"$error":"#REF!"}},{"$f":"SUM(#REF!)","v":{"$error":"#REF!"}},{"$f":"SUM(#REF!)","v":{"$error":"#REF!"}},{"$f":"SUM(#REF!)","v":{"$error":"#REF!"}},{"$f":"SUM(#REF!)","v":{"$error":"#REF!"}},{"$f":"SUM(#REF!)","v":{"$error":"#REF!"}},{"$f":"SUM(#REF!)","v":{"$error":"#REF!"}},{"$f":"SUM(#REF!)","v":{"$error":"#REF!"}},{"$f":"SUM(#REF!)","v":{"$error":"#REF!"}},{"$f":"SUM(#REF!)","v":{"$error":"#REF!"}},{"$f":"SUM(#REF!)","v":{"$error":"#REF!"}},{"$f":"SUM(#REF!)","v":{"$error":"#REF!"}},{"$f":"SUM(#REF!)","v":{"$error":"#REF!"}},{"$f":"SUM(#REF!)","v":{"$error":"#REF!"}},{"$f":"SUM(#REF!)","v":{"$error":"#REF!"}},{"$f":"SUM(#REF!)","v":{"$error":"#REF!"}},{"$f":"SUM(#REF!)","v":{"$error":"#REF!"}},{"$f":"SUM(#REF!)","v":{"$error":"#REF!"}},{"$f":"SUM(#REF!)","v":{"$error":"#REF!"}},{"$f":"SUM(#REF!)","v":{"$error":"#REF!"}},{"$f":"SUM(#REF!)","v":{"$error":"#REF!"}},{"$f":"SUM(#REF!)","v":{"$error":"#REF!"}},{"$f":"SUM(#REF!)","v":{"$error":"#REF!"}},{"$f":"SUM(#REF!)","v":{"$error":"#REF!"}},{"$f":"SUM(#REF!)","v":{"$error":"#REF!"}},{"$f":"SUM(#REF!)","v":{"$error":"#REF!"}},{"$f":"SUM(#REF!)","v":{"$error":"#REF!"}},{"$f":"SUM(#REF!)","v":{"$error":"#REF!"}},{"$f":"SUM(#REF!)","v":{"$error":"#REF!"}},{"$f":"SUM(#REF!)","v":{"$error":"#REF!"}},{"$f":"SUM(#REF!)","v":{"$error":"#REF!"}},{"$f":"SUM(#REF!)","v":{"$error":"#REF!"}},{"$f":"SUM(#REF!)","v":{"$error":"#REF!"}},{"$f":"SUM(#REF!)","v":{"$error":"#REF!"}},{"$f":"SUM(#REF!)","v":{"$error":"#REF!"}},{"$f":"SUM(#REF!)","v":{"$error":"#REF!"}},{"$f":"SUM(#REF!)","v":{"$error":"#REF!"}},{"$f":"SUM(#REF!)","v":{"$error":"#REF!"}},{"$f":"SUM(#REF!)","v":{"$error":"#REF!"}},{"$f":"SUM(#REF!)","v":{"$error":"#REF!"}},{"$f":"SUM(#REF!)","v":{"$error":"#REF!"}},{"$f":"SUM(#REF!)","v":{"$error":"#REF!"}},{"$f":"SUM(#REF!)","v":{"$error":"#REF!"}},{"$f":"SUM(#REF!)","v":{"$error":"#REF!"}},{"$f":"SUM(#REF!)","v":{"$error":"#REF!"}},{"$f":"SUM(#REF!)","v":{"$error":"#REF!"}},{"$f":"SUM(#REF!)","v":{"$error":"#REF!"}},{"$f":"SUM(#REF!)","v":{"$error":"#REF!"}},{"$f":"SUM(#REF!)","v":{"$error":"#REF!"}},{"$f":"SUM(#REF!)","v":{"$error":"#REF!"}},{"$f":"SUM(#REF!)","v":{"$error":"#REF!"}},{"$f":"SUM(#REF!)","v":{"$error":"#REF!"}},{"$f":"SUM(#REF!)","v":{"$error":"#REF!"}},{"$f":"SUM(#REF!)","v":{"$error":"#REF!"}},{"$f":"SUM(#REF!)","v":{"$error":"#REF!"}},{"$f":"SUM(#REF!)","v":{"$error":"#REF!"}},{"$f":"SUM(#REF!)","v":{"$error":"#REF!"}},{"$f":"SUM(#REF!)","v":{"$error":"#REF!"}},{"$f":"SUM(#REF!)","v":{"$error":"#REF!"}},{"$f":"SUM(#REF!)","v":{"$error":"#REF!"}},{"$f":"SUM(#REF!)","v":{"$error":"#REF!"}},{"$f":"SUM(#REF!)","v":{"$error":"#REF!"}},{"$f":"SUM(#REF!)","v":{"$error":"#REF!"}},{"$f":"SUM(#REF!)","v":{"$error":"#REF!"}},{"$f":"SUM(#REF!)","v":{"$error":"#REF!"}},{"$f":"SUM(#REF!)","v":{"$error":"#REF!"}},{"$f":"SUM(#REF!)","v":{"$error":"#REF!"}},{"$f":"SUM(#REF!)","v":{"$error":"#REF!"}},{"$f":"SUM(#REF!)","v":{"$error":"#REF!"}},{"$f":"SUM(#REF!)","v":{"$error":"#REF!"}},{"$f":"SUM(#REF!)","v":{"$error":"#REF!"}},{"$f":"SUM(#REF!)","v":{"$error":"#REF!"}},{"$f":"SUM(#REF!)","v":{"$error":"#REF!"}},{"$f":"SUM(#REF!)","v":{"$error":"#REF!"}},{"$f":"SUM(#REF!)","v":{"$error":"#REF!"}},{"$f":"SUM(#REF!)","v":{"$error":"#REF!"}},{"$f":"SUM(#REF!)","v":{"$error":"#REF!"}},{"$f":"SUM(#REF!)","v":{"$error":"#REF!"}},{"$f":"SUM(#REF!)","v":{"$error":"#REF!"}},{"$f":"SUM(#REF!)","v":{"$error":"#REF!"}},{"$f":"SUM(#REF!)","v":{"$error":"#REF!"}},{"$f":"SUM(#REF!)","v":{"$error":"#REF!"}},{"$f":"SUM(#REF!)","v":{"$error":"#REF!"}},{"$f":"SUM(#REF!)","v":{"$error":"#REF!"}},{"$f":"SUM(#REF!)","v":{"$error":"#REF!"}},{"$f":"SUM(#REF!)","v":{"$error":"#REF!"}},{"$f":"SUM(#REF!)","v":{"$error":"#REF!"}},{"$f":"SUM(#REF!)","v":{"$error":"#REF!"}},{"$f":"SUM(#REF!)","v":{"$error":"#REF!"}},{"$f":"SUM(#REF!)","v":{"$error":"#REF!"}},{"$f":"SUM(#REF!)","v":{"$error":"#REF!"}},{"$f":"SUM(#REF!)","v":{"$error":"#REF!"}},{"$f":"SUM(#REF!)","v":{"$error":"#REF!"}},{"$f":"SUM(#REF!)","v":{"$error":"#REF!"}},{"$f":"SUM(#REF!)","v":{"$error":"#REF!"}},{"$f":"SUM(#REF!)","v":{"$error":"#REF!"}},{"$f":"SUM(#REF!)","v":{"$error":"#REF!"}},{"$f":"SUM(#REF!)","v":{"$error":"#REF!"}},{"$f":"SUM(#REF!)","v":{"$error":"#REF!"}},{"$f":"SUM(#REF!)","v":{"$error":"#REF!"}},{"$f":"SUM(#REF!)","v":{"$error":"#REF!"}},{"$f":"SUM(#REF!)","v":{"$error":"#REF!"}},{"$f":"SUM(#REF!)","v":{"$error":"#REF!"}},{"$f":"SUM(#REF!)","v":{"$error":"#REF!"}},{"$f":"SUM(#REF!)","v":{"$error":"#REF!"}},{"$f":"SUM(#REF!)","v":{"$error":"#REF!"}},{"$f":"SUM(#REF!)","v":{"$error":"#REF!"}},{"$f":"SUM(#REF!)","v":{"$error":"#REF!"}},{"$f":"SUM(#REF!)","v":{"$error":"#REF!"}},{"$f":"SUM(#REF!)","v":{"$error":"#REF!"}},{"$f":"SUM(#REF!)","v":{"$error":"#REF!"}},{"$f":"SUM(#REF!)","v":{"$error":"#REF!"}},{"$f":"SUM(#REF!)","v":{"$error":"#REF!"}},{"$f":"SUM(#REF!)","v":{"$error":"#REF!"}},{"$f":"SUM(#REF!)","v":{"$error":"#REF!"}},{"$f":"SUM(#REF!)","v":{"$error":"#REF!"}},{"$f":"SUM(#REF!)","v":{"$error":"#REF!"}},{"$f":"SUM(#REF!)","v":{"$error":"#REF!"}},{"$f":"SUM(#REF!)","v":{"$error":"#REF!"}},{"$f":"SUM(#REF!)","v":{"$error":"#REF!"}},{"$f":"SUM(#REF!)","v":{"$error":"#REF!"}},{"$f":"SUM(#REF!)","v":{"$error":"#REF!"}},{"$f":"SUM(#REF!)","v":{"$error":"#REF!"}},{"$f":"SUM(#REF!)","v":{"$error":"#REF!"}},{"$f":"SUM(#REF!)","v":{"$error":"#REF!"}},{"$f":"SUM(#REF!)","v":{"$error":"#REF!"}},{"$f":"SUM(#REF!)","v":{"$error":"#REF!"}},{"$f":"SUM(#REF!)","v":{"$error":"#REF!"}},{"$f":"SUM(#REF!)","v":{"$error":"#REF!"}},{"$f":"SUM(#REF!)","v":{"$error":"#REF!"}},{"$f":"SUM(#REF!)","v":{"$error":"#REF!"}},{"$f":"SUM(#REF!)","v":{"$error":"#REF!"}},{"$f":"SUM(#REF!)","v":{"$error":"#REF!"}},{"$f":"SUM(#REF!)","v":{"$error":"#REF!"}},{"$f":"SUM(#REF!)","v":{"$error":"#REF!"}},{"$f":"SUM(#REF!)","v":{"$error":"#REF!"}},{"$f":"SUM(#REF!)","v":{"$error":"#REF!"}},{"$f":"SUM(#REF!)","v":{"$error":"#REF!"}},{"$f":"SUM(#REF!)","v":{"$error":"#REF!"}},{"$f":"SUM(#REF!)","v":{"$error":"#REF!"}},{"$f":"SUM(#REF!)","v":{"$error":"#REF!"}},{"$f":"SUM(#REF!)","v":{"$error":"#REF!"}},{"$f":"SUM(#REF!)","v":{"$error":"#REF!"}},{"$f":"SUM(#REF!)","v":{"$error":"#REF!"}},{"$f":"SUM(#REF!)","v":{"$error":"#REF!"}},{"$f":"SUM(#REF!)","v":{"$error":"#REF!"}},{"$f":"SUM(#REF!)","v":{"$error":"#REF!"}},{"$f":"SUM(#REF!)","v":{"$error":"#REF!"}},{"$f":"SUM(#REF!)","v":{"$error":"#REF!"}},{"$f":"SUM(#REF!)","v":{"$error":"#REF!"}},{"$f":"SUM(#REF!)","v":{"$error":"#REF!"}},{"$f":"SUM(#REF!)","v":{"$error":"#REF!"}},{"$f":"SUM(#REF!)","v":{"$error":"#REF!"}},{"$f":"SUM(#REF!)","v":{"$error":"#REF!"}},{"$f":"SUM(#REF!)","v":{"$error":"#REF!"}},{"$f":"SUM(#REF!)","v":{"$error":"#REF!"}},{"$f":"SUM(#REF!)","v":{"$error":"#REF!"}},{"$f":"SUM(#REF!)","v":{"$error":"#REF!"}},{"$f":"SUM(#REF!)","v":{"$error":"#REF!"}},{"$f":"SUM(#REF!)","v":{"$error":"#REF!"}},{"$f":"SUM(#REF!)","v":{"$error":"#REF!"}},{"$f":"SUM(#REF!)","v":{"$error":"#REF!"}},{"$f":"SUM(#REF!)","v":{"$error":"#REF!"}},{"$f":"SUM(#REF!)","v":{"$error":"#REF!"}},{"$f":"SUM(#REF!)","v":{"$error":"#REF!"}},{"$f":"SUM(#REF!)","v":{"$error":"#REF!"}},{"$f":"SUM(#REF!)","v":{"$error":"#REF!"}},{"$f":"SUM(#REF!)","v":{"$error":"#REF!"}},{"$f":"SUM(#REF!)","v":{"$error":"#REF!"}},{"$f":"SUM(#REF!)","v":{"$error":"#REF!"}},{"$f":"SUM(#REF!)","v":{"$error":"#REF!"}},{"$f":"SUM(#REF!)","v":{"$error":"#REF!"}},{"$f":"SUM(#REF!)","v":{"$error":"#REF!"}},{"$f":"SUM(#REF!)","v":{"$error":"#REF!"}},{"$f":"SUM(#REF!)","v":{"$error":"#REF!"}},{"$f":"SUM(#REF!)","v":{"$error":"#REF!"}},{"$f":"SUM(#REF!)","v":{"$error":"#REF!"}},{"$f":"SUM(#REF!)","v":{"$error":"#REF!"}},{"$f":"SUM(#REF!)","v":{"$error":"#REF!"}},{"$f":"SUM(#REF!)","v":{"$error":"#REF!"}},{"$f":"SUM(#REF!)","v":{"$error":"#REF!"}},{"$f":"SUM(#REF!)","v":{"$error":"#REF!"}},{"$f":"SUM(#REF!)","v":{"$error":"#REF!"}},{"$f":"SUM(#REF!)","v":{"$error":"#REF!"}},{"$f":"SUM(#REF!)","v":{"$error":"#REF!"}},{"$f":"SUM(#REF!)","v":{"$error":"#REF!"}},{"$f":"SUM(#REF!)","v":{"$error":"#REF!"}},{"$f":"SUM(#REF!)","v":{"$error":"#REF!"}},{"$f":"SUM(#REF!)","v":{"$error":"#REF!"}},{"$f":"SUM(#REF!)","v":{"$error":"#REF!"}},{"$f":"SUM(#REF!)","v":{"$error":"#REF!"}},{"$f":"SUM(#REF!)","v":{"$error":"#REF!"}},{"$f":"SUM(#REF!)","v":{"$error":"#REF!"}},{"$f":"SUM(#REF!)","v":{"$error":"#REF!"}},{"$f":"SUM(#REF!)","v":{"$error":"#REF!"}},{"$f":"SUM(#REF!)","v":{"$error":"#REF!"}},{"$f":"SUM(#REF!)","v":{"$error":"#REF!"}},{"$f":"SUM(#REF!)","v":{"$error":"#REF!"}},{"$f":"SUM(#REF!)","v":{"$error":"#REF!"}},{"$f":"SUM(#REF!)","v":{"$error":"#REF!"}},{"$f":"SUM(#REF!)","v":{"$error":"#REF!"}},{"$f":"SUM(#REF!)","v":{"$error":"#REF!"}},{"$f":"SUM(#REF!)","v":{"$error":"#REF!"}},{"$f":"SUM(#REF!)","v":{"$error":"#REF!"}},{"$f":"SUM(#REF!)","v":{"$error":"#REF!"}},{"$f":"SUM(#REF!)","v":{"$error":"#REF!"}},{"$f":"SUM(#REF!)","v":{"$error":"#REF!"}},{"$f":"SUM(#REF!)","v":{"$error":"#REF!"}},{"$f":"SUM(#REF!)","v":{"$error":"#REF!"}},{"$f":"SUM(#REF!)","v":{"$error":"#REF!"}},{"$f":"SUM(#REF!)","v":{"$error":"#REF!"}},{"$f":"SUM(#REF!)","v":{"$error":"#REF!"}},{"$f":"SUM(#REF!)","v":{"$error":"#REF!"}},{"$f":"SUM(#REF!)","v":{"$error":"#REF!"}},{"$f":"SUM(#REF!)","v":{"$error":"#REF!"}},{"$f":"SUM(#REF!)","v":{"$error":"#REF!"}},{"$f":"SUM(#REF!)","v":{"$error":"#REF!"}},{"$f":"SUM(#REF!)","v":{"$error":"#REF!"}},{"$f":"SUM(#REF!)","v":{"$error":"#REF!"}},{"$f":"SUM(#REF!)","v":{"$error":"#REF!"}},{"$f":"SUM(#REF!)","v":{"$error":"#REF!"}},{"$f":"SUM(#REF!)","v":{"$error":"#REF!"}},{"$f":"SUM(#REF!)","v":{"$error":"#REF!"}},{"$f":"SUM(#REF!)","v":{"$error":"#REF!"}},{"$f":"SUM(#REF!)","v":{"$error":"#REF!"}},{"$f":"SUM(#REF!)","v":{"$error":"#REF!"}},{"$f":"SUM(#REF!)","v":{"$error":"#REF!"}},{"$f":"SUM(#REF!)","v":{"$error":"#REF!"}},{"$f":"SUM(#REF!)","v":{"$error":"#REF!"}},{"$f":"SUM(#REF!)","v":{"$error":"#REF!"}},{"$f":"SUM(#REF!)","v":{"$error":"#REF!"}},{"$f":"SUM(#REF!)","v":{"$error":"#REF!"}},{"$f":"SUM(#REF!)","v":{"$error":"#REF!"}},{"$f":"SUM(#REF!)","v":{"$error":"#REF!"}},{"$f":"SUM(#REF!)","v":{"$error":"#REF!"}},{"$f":"SUM(#REF!)","v":{"$error":"#REF!"}},{"$f":"SUM(#REF!)","v":{"$error":"#REF!"}},{"$f":"SUM(#REF!)","v":{"$error":"#REF!"}},{"$f":"SUM(#REF!)","v":{"$error":"#REF!"}},{"$f":"SUM(#REF!)","v":{"$error":"#REF!"}},{"$f":"SUM(#REF!)","v":{"$error":"#REF!"}},{"$f":"SUM(#REF!)","v":{"$error":"#REF!"}},{"$f":"SUM(#REF!)","v":{"$error":"#REF!"}},{"$f":"SUM(#REF!)","v":{"$error":"#REF!"}},{"$f":"SUM(#REF!)","v":{"$error":"#REF!"}},{"$f":"SUM(#REF!)","v":{"$error":"#REF!"}},{"$f":"SUM(#REF!)","v":{"$error":"#REF!"}},{"$f":"SUM(#REF!)","v":{"$error":"#REF!"}},{"$f":"SUM(#REF!)","v":{"$error":"#REF!"}},{"$f":"SUM(#REF!)","v":{"$error":"#REF!"}},{"$f":"SUM(#REF!)","v":{"$error":"#REF!"}},{"$f":"SUM(#REF!)","v":{"$error":"#REF!"}},{"$f":"SUM(#REF!)","v":{"$error":"#REF!"}},{"$f":"SUM(#REF!)","v":{"$error":"#REF!"}},{"$f":"SUM(#REF!)","v":{"$error":"#REF!"}},{"$f":"SUM(#REF!)","v":{"$error":"#REF!"}},{"$f":"SUM(#REF!)","v":{"$error":"#REF!"}},{"$f":"SUM(#REF!)","v":{"$error":"#REF!"}},{"$f":"SUM(#REF!)","v":{"$error":"#REF!"}},{"$f":"SUM(#REF!)","v":{"$error":"#REF!"}},{"$f":"SUM(#REF!)","v":{"$error":"#REF!"}},{"$f":"SUM(#REF!)","v":{"$error":"#REF!"}},{"$f":"SUM(#REF!)","v":{"$error":"#REF!"}},{"$f":"SUM(#REF!)","v":{"$error":"#REF!"}},{"$f":"SUM(#REF!)","v":{"$error":"#REF!"}},{"$f":"SUM(#REF!)","v":{"$error":"#REF!"}},{"$f":"SUM(#REF!)","v":{"$error":"#REF!"}},{"$f":"SUM(#REF!)","v":{"$error":"#REF!"}},{"$f":"SUM(#REF!)","v":{"$error":"#REF!"}},{"$f":"SUM(#REF!)","v":{"$error":"#REF!"}},{"$f":"SUM(#REF!)","v":{"$error":"#REF!"}},{"$f":"SUM(#REF!)","v":{"$error":"#REF!"}},{"$f":"SUM(#REF!)","v":{"$error":"#REF!"}},{"$f":"SUM(#REF!)","v":{"$error":"#REF!"}},{"$f":"SUM(#REF!)","v":{"$error":"#REF!"}},{"$f":"SUM(#REF!)","v":{"$error":"#REF!"}},{"$f":"SUM(#REF!)","v":{"$error":"#REF!"}},{"$f":"SUM(#REF!)","v":{"$error":"#REF!"}},{"$f":"SUM(#REF!)","v":{"$error":"#REF!"}},{"$f":"SUM(#REF!)","v":{"$error":"#REF!"}},{"$f":"SUM(#REF!)","v":{"$error":"#REF!"}},{"$f":"SUM(#REF!)","v":{"$error":"#REF!"}},{"$f":"SUM(#REF!)","v":{"$error":"#REF!"}},{"$f":"SUM(#REF!)","v":{"$error":"#REF!"}},{"$f":"SUM(#REF!)","v":{"$error":"#REF!"}},{"$f":"SUM(#REF!)","v":{"$error":"#REF!"}},{"$f":"SUM(#REF!)","v":{"$error":"#REF!"}},{"$f":"SUM(#REF!)","v":{"$error":"#REF!"}},{"$f":"SUM(#REF!)","v":{"$error":"#REF!"}},{"$f":"SUM(#REF!)","v":{"$error":"#REF!"}},{"$f":"SUM(#REF!)","v":{"$error":"#REF!"}},{"$f":"SUM(#REF!)","v":{"$error":"#REF!"}},{"$f":"SUM(#REF!)","v":{"$error":"#REF!"}},{"$f":"SUM(#REF!)","v":{"$error":"#REF!"}},{"$f":"SUM(#REF!)","v":{"$error":"#REF!"}},{"$f":"SUM(#REF!)","v":{"$error":"#REF!"}},{"$f":"SUM(#REF!)","v":{"$error":"#REF!"}},{"$f":"SUM(#REF!)","v":{"$error":"#REF!"}},{"$f":"SUM(#REF!)","v":{"$error":"#REF!"}},{"$f":"SUM(#REF!)","v":{"$error":"#REF!"}},{"$f":"SUM(#REF!)","v":{"$error":"#REF!"}},{"$f":"SUM(#REF!)","v":{"$error":"#REF!"}},{"$f":"SUM(#REF!)","v":{"$error":"#REF!"}},{"$f":"SUM(#REF!)","v":{"$error":"#REF!"}},{"$f":"SUM(#REF!)","v":{"$error":"#REF!"}},{"$f":"SUM(#REF!)","v":{"$error":"#REF!"}},{"$f":"SUM(#REF!)","v":{"$error":"#REF!"}},{"$f":"SUM(#REF!)","v":{"$error":"#REF!"}},{"$f":"SUM(#REF!)","v":{"$error":"#REF!"}},{"$f":"SUM(#REF!)","v":{"$error":"#REF!"}},{"$f":"SUM(#REF!)","v":{"$error":"#REF!"}},{"$f":"SUM(#REF!)","v":{"$error":"#REF!"}},{"$f":"SUM(#REF!)","v":{"$error":"#REF!"}},{"$f":"SUM(#REF!)","v":{"$error":"#REF!"}},{"$f":"SUM(#REF!)","v":{"$error":"#REF!"}},{"$f":"SUM(#REF!)","v":{"$error":"#REF!"}},{"$f":"SUM(#REF!)","v":{"$error":"#REF!"}},{"$f":"SUM(#REF!)","v":{"$error":"#REF!"}},{"$f":"SUM(#REF!)","v":{"$error":"#REF!"}},{"$f":"SUM(#REF!)","v":{"$error":"#REF!"}},{"$f":"SUM(#REF!)","v":{"$error":"#REF!"}},{"$f":"SUM(#REF!)","v":{"$error":"#REF!"}},{"$f":"SUM(#REF!)","v":{"$error":"#REF!"}},{"$f":"SUM(#REF!)","v":{"$error":"#REF!"}},{"$f":"SUM(#REF!)","v":{"$error":"#REF!"}},{"$f":"SUM(#REF!)","v":{"$error":"#REF!"}},{"$f":"SUM(#REF!)","v":{"$error":"#REF!"}},{"$f":"SUM(#REF!)","v":{"$error":"#REF!"}},{"$f":"SUM(#REF!)","v":{"$error":"#REF!"}},{"$f":"SUM(#REF!)","v":{"$error":"#REF!"}},{"$f":"SUM(#REF!)","v":{"$error":"#REF!"}},{"$f":"SUM(#REF!)","v":{"$error":"#REF!"}},{"$f":"SUM(#REF!)","v":{"$error":"#REF!"}},{"$f":"SUM(#REF!)","v":{"$error":"#REF!"}},{"$f":"SUM(#REF!)","v":{"$error":"#REF!"}},{"$f":"SUM(#REF!)","v":{"$error":"#REF!"}},{"$f":"SUM(#REF!)","v":{"$error":"#REF!"}},{"$f":"SUM(#REF!)","v":{"$error":"#REF!"}},{"$f":"SUM(#REF!)","v":{"$error":"#REF!"}},{"$f":"SUM(#REF!)","v":{"$error":"#REF!"}},{"$f":"SUM(#REF!)","v":{"$error":"#REF!"}},{"$f":"SUM(#REF!)","v":{"$error":"#REF!"}},{"$f":"SUM(#REF!)","v":{"$error":"#REF!"}},{"$f":"SUM(#REF!)","v":{"$error":"#REF!"}},{"$f":"SUM(#REF!)","v":{"$error":"#REF!"}},{"$f":"SUM(#REF!)","v":{"$error":"#REF!"}},{"$f":"SUM(#REF!)","v":{"$error":"#REF!"}},{"$f":"SUM(#REF!)","v":{"$error":"#REF!"}},{"$f":"SUM(#REF!)","v":{"$error":"#REF!"}},{"$f":"SUM(#REF!)","v":{"$error":"#REF!"}},{"$f":"SUM(#REF!)","v":{"$error":"#REF!"}},{"$f":"SUM(#REF!)","v":{"$error":"#REF!"}},{"$f":"SUM(#REF!)","v":{"$error":"#REF!"}},{"$f":"SUM(#REF!)","v":{"$error":"#REF!"}},{"$f":"SUM(#REF!)","v":{"$error":"#REF!"}},{"$f":"SUM(#REF!)","v":{"$error":"#REF!"}},{"$f":"SUM(#REF!)","v":{"$error":"#REF!"}},{"$f":"SUM(#REF!)","v":{"$error":"#REF!"}},{"$f":"SUM(#REF!)","v":{"$error":"#REF!"}},{"$f":"SUM(#REF!)","v":{"$error":"#REF!"}},{"$f":"SUM(#REF!)","v":{"$error":"#REF!"}},{"$f":"SUM(#REF!)","v":{"$error":"#REF!"}},{"$f":"SUM(#REF!)","v":{"$error":"#REF!"}},{"$f":"SUM(#REF!)","v":{"$error":"#REF!"}},{"$f":"SUM(#REF!)","v":{"$error":"#REF!"}},{"$f":"SUM(#REF!)","v":{"$error":"#REF!"}},{"$f":"SUM(#REF!)","v":{"$error":"#REF!"}},{"$f":"SUM(#REF!)","v":{"$error":"#REF!"}},{"$f":"SUM(#REF!)","v":{"$error":"#REF!"}},{"$f":"SUM(#REF!)","v":{"$error":"#REF!"}},{"$f":"SUM(#REF!)","v":{"$error":"#REF!"}},{"$f":"SUM(#REF!)","v":{"$error":"#REF!"}},{"$f":"SUM(#REF!)","v":{"$error":"#REF!"}},{"$f":"SUM(#REF!)","v":{"$error":"#REF!"}},{"$f":"SUM(#REF!)","v":{"$error":"#REF!"}},{"$f":"SUM(#REF!)","v":{"$error":"#REF!"}},{"$f":"SUM(#REF!)","v":{"$error":"#REF!"}},{"$f":"SUM(#REF!)","v":{"$error":"#REF!"}},{"$f":"SUM(#REF!)","v":{"$error":"#REF!"}},{"$f":"SUM(#REF!)","v":{"$error":"#REF!"}},{"$f":"SUM(#REF!)","v":{"$error":"#REF!"}},{"$f":"SUM(#REF!)","v":{"$error":"#REF!"}},{"$f":"SUM(#REF!)","v":{"$error":"#REF!"}},{"$f":"SUM(#REF!)","v":{"$error":"#REF!"}},{"$f":"SUM(#REF!)","v":{"$error":"#REF!"}},{"$f":"SUM(#REF!)","v":{"$error":"#REF!"}},{"$f":"SUM(#REF!)","v":{"$error":"#REF!"}},{"$f":"SUM(#REF!)","v":{"$error":"#REF!"}},{"$f":"SUM(#REF!)","v":{"$error":"#REF!"}},{"$f":"SUM(#REF!)","v":{"$error":"#REF!"}},{"$f":"SUM(#REF!)","v":{"$error":"#REF!"}},{"$f":"SUM(#REF!)","v":{"$error":"#REF!"}},{"$f":"SUM(#REF!)","v":{"$error":"#REF!"}},{"$f":"SUM(#REF!)","v":{"$error":"#REF!"}},{"$f":"SUM(#REF!)","v":{"$error":"#REF!"}},{"$f":"SUM(#REF!)","v":{"$error":"#REF!"}},{"$f":"SUM(#REF!)","v":{"$error":"#REF!"}},{"$f":"SUM(#REF!)","v":{"$error":"#REF!"}},{"$f":"SUM(#REF!)","v":{"$error":"#REF!"}},{"$f":"SUM(#REF!)","v":{"$error":"#REF!"}},{"$f":"SUM(#REF!)","v":{"$error":"#REF!"}},{"$f":"SUM(#REF!)","v":{"$error":"#REF!"}},{"$f":"SUM(#REF!)","v":{"$error":"#REF!"}},{"$f":"SUM(#REF!)","v":{"$error":"#REF!"}},{"$f":"SUM(#REF!)","v":{"$error":"#REF!"}},{"$f":"SUM(#REF!)","v":{"$error":"#REF!"}},{"$f":"SUM(#REF!)","v":{"$error":"#REF!"}},{"$f":"SUM(#REF!)","v":{"$error":"#REF!"}},{"$f":"SUM(#REF!)","v":{"$error":"#REF!"}},{"$f":"SUM(#REF!)","v":{"$error":"#REF!"}},{"$f":"SUM(#REF!)","v":{"$error":"#REF!"}},{"$f":"SUM(#REF!)","v":{"$error":"#REF!"}},{"$f":"SUM(#REF!)","v":{"$error":"#REF!"}},{"$f":"SUM(#REF!)","v":{"$error":"#REF!"}},{"$f":"SUM(#REF!)","v":{"$error":"#REF!"}},{"$f":"SUM(#REF!)","v":{"$error":"#REF!"}},{"$f":"SUM(#REF!)","v":{"$error":"#REF!"}},{"$f":"SUM(#REF!)","v":{"$error":"#REF!"}},{"$f":"SUM(#REF!)","v":{"$error":"#REF!"}},{"$f":"SUM(#REF!)","v":{"$error":"#REF!"}},{"$f":"SUM(#REF!)","v":{"$error":"#REF!"}},{"$f":"SUM(#REF!)","v":{"$error":"#REF!"}},{"$f":"SUM(#REF!)","v":{"$error":"#REF!"}},{"$f":"SUM(#REF!)","v":{"$error":"#REF!"}},{"$f":"SUM(#REF!)","v":{"$error":"#REF!"}},{"$f":"SUM(#REF!)","v":{"$error":"#REF!"}},{"$f":"SUM(#REF!)","v":{"$error":"#REF!"}},{"$f":"SUM(#REF!)","v":{"$error":"#REF!"}},{"$f":"SUM(#REF!)","v":{"$error":"#REF!"}},{"$f":"SUM(#REF!)","v":{"$error":"#REF!"}},{"$f":"SUM(#REF!)","v":{"$error":"#REF!"}},{"$f":"SUM(#REF!)","v":{"$error":"#REF!"}},{"$f":"SUM(#REF!)","v":{"$error":"#REF!"}},{"$f":"SUM(#REF!)","v":{"$error":"#REF!"}},{"$f":"SUM(#REF!)","v":{"$error":"#REF!"}},{"$f":"SUM(#REF!)","v":{"$error":"#REF!"}},{"$f":"SUM(#REF!)","v":{"$error":"#REF!"}},{"$f":"SUM(#REF!)","v":{"$error":"#REF!"}},{"$f":"SUM(#REF!)","v":{"$error":"#REF!"}},{"$f":"SUM(#REF!)","v":{"$error":"#REF!"}},{"$f":"SUM(#REF!)","v":{"$error":"#REF!"}},{"$f":"SUM(#REF!)","v":{"$error":"#REF!"}},{"$f":"SUM(#REF!)","v":{"$error":"#REF!"}},{"$f":"SUM(#REF!)","v":{"$error":"#REF!"}},{"$f":"SUM(#REF!)","v":{"$error":"#REF!"}},{"$f":"SUM(#REF!)","v":{"$error":"#REF!"}},{"$f":"SUM(#REF!)","v":{"$error":"#REF!"}},{"$f":"SUM(#REF!)","v":{"$error":"#REF!"}},{"$f":"SUM(#REF!)","v":{"$error":"#REF!"}},{"$f":"SUM(#REF!)","v":{"$error":"#REF!"}},{"$f":"SUM(#REF!)","v":{"$error":"#REF!"}},{"$f":"SUM(#REF!)","v":{"$error":"#REF!"}},{"$f":"SUM(#REF!)","v":{"$error":"#REF!"}},{"$f":"SUM(#REF!)","v":{"$error":"#REF!"}},{"$f":"SUM(#REF!)","v":{"$error":"#REF!"}},{"$f":"SUM(#REF!)","v":{"$error":"#REF!"}},{"$f":"SUM(#REF!)","v":{"$error":"#REF!"}},{"$f":"SUM(#REF!)","v":{"$error":"#REF!"}},{"$f":"SUM(#REF!)","v":{"$error":"#REF!"}},{"$f":"SUM(#REF!)","v":{"$error":"#REF!"}},{"$f":"SUM(#REF!)","v":{"$error":"#REF!"}},{"$f":"SUM(#REF!)","v":{"$error":"#REF!"}},{"$f":"SUM(#REF!)","v":{"$error":"#REF!"}},{"$f":"SUM(#REF!)","v":{"$error":"#REF!"}},{"$f":"SUM(#REF!)","v":{"$error":"#REF!"}},{"$f":"SUM(#REF!)","v":{"$error":"#REF!"}},{"$f":"SUM(#REF!)","v":{"$error":"#REF!"}},{"$f":"SUM(#REF!)","v":{"$error":"#REF!"}},{"$f":"SUM(#REF!)","v":{"$error":"#REF!"}},{"$f":"SUM(#REF!)","v":{"$error":"#REF!"}},{"$f":"SUM(#REF!)","v":{"$error":"#REF!"}},{"$f":"SUM(#REF!)","v":{"$error":"#REF!"}},{"$f":"SUM(#REF!)","v":{"$error":"#REF!"}},{"$f":"SUM(#REF!)","v":{"$error":"#REF!"}},{"$f":"SUM(#REF!)","v":{"$error":"#REF!"}},{"$f":"SUM(#REF!)","v":{"$error":"#REF!"}},{"$f":"SUM(#REF!)","v":{"$error":"#REF!"}},{"$f":"SUM(#REF!)","v":{"$error":"#REF!"}},{"$f":"SUM(#REF!)","v":{"$error":"#REF!"}},{"$f":"SUM(#REF!)","v":{"$error":"#REF!"}},{"$f":"SUM(#REF!)","v":{"$error":"#REF!"}},{"$f":"SUM(#REF!)","v":{"$error":"#REF!"}},{"$f":"SUM(#REF!)","v":{"$error":"#REF!"}},{"$f":"SUM(#REF!)","v":{"$error":"#REF!"}},{"$f":"SUM(#REF!)","v":{"$error":"#REF!"}},{"$f":"SUM(#REF!)","v":{"$error":"#REF!"}},{"$f":"SUM(#REF!)","v":{"$error":"#REF!"}},{"$f":"SUM(#REF!)","v":{"$error":"#REF!"}},{"$f":"SUM(#REF!)","v":{"$error":"#REF!"}},{"$f":"SUM(#REF!)","v":{"$error":"#REF!"}},{"$f":"SUM(#REF!)","v":{"$error":"#REF!"}},{"$f":"SUM(#REF!)","v":{"$error":"#REF!"}},{"$f":"SUM(#REF!)","v":{"$error":"#REF!"}},{"$f":"SUM(#REF!)","v":{"$error":"#REF!"}},{"$f":"SUM(#REF!)","v":{"$error":"#REF!"}},{"$f":"SUM(#REF!)","v":{"$error":"#REF!"}},{"$f":"SUM(#REF!)","v":{"$error":"#REF!"}},{"$f":"SUM(#REF!)","v":{"$error":"#REF!"}},{"$f":"SUM(#REF!)","v":{"$error":"#REF!"}},{"$f":"SUM(#REF!)","v":{"$error":"#REF!"}},{"$f":"SUM(#REF!)","v":{"$error":"#REF!"}},{"$f":"SUM(#REF!)","v":{"$error":"#REF!"}},{"$f":"SUM(#REF!)","v":{"$error":"#REF!"}},{"$f":"SUM(#REF!)","v":{"$error":"#REF!"}},{"$f":"SUM(#REF!)","v":{"$error":"#REF!"}},{"$f":"SUM(#REF!)","v":{"$error":"#REF!"}},{"$f":"SUM(#REF!)","v":{"$error":"#REF!"}},{"$f":"SUM(#REF!)","v":{"$error":"#REF!"}},{"$f":"SUM(#REF!)","v":{"$error":"#REF!"}},{"$f":"SUM(#REF!)","v":{"$error":"#REF!"}},{"$f":"SUM(#REF!)","v":{"$error":"#REF!"}},{"$f":"SUM(#REF!)","v":{"$error":"#REF!"}},{"$f":"SUM(#REF!)","v":{"$error":"#REF!"}},{"$f":"SUM(#REF!)","v":{"$error":"#REF!"}},{"$f":"SUM(#REF!)","v":{"$error":"#REF!"}},{"$f":"SUM(#REF!)","v":{"$error":"#REF!"}},{"$f":"SUM(#REF!)","v":{"$error":"#REF!"}},{"$f":"SUM(#REF!)","v":{"$error":"#REF!"}},{"$f":"SUM(#REF!)","v":{"$error":"#REF!"}},{"$f":"SUM(#REF!)","v":{"$error":"#REF!"}},{"$f":"SUM(#REF!)","v":{"$error":"#REF!"}},{"$f":"SUM(#REF!)","v":{"$error":"#REF!"}},{"$f":"SUM(#REF!)","v":{"$error":"#REF!"}},{"$f":"SUM(#REF!)","v":{"$error":"#REF!"}},{"$f":"SUM(#REF!)","v":{"$error":"#REF!"}},{"$f":"SUM(#REF!)","v":{"$error":"#REF!"}},{"$f":"SUM(#REF!)","v":{"$error":"#REF!"}},{"$f":"SUM(#REF!)","v":{"$error":"#REF!"}},{"$f":"SUM(#REF!)","v":{"$error":"#REF!"}},{"$f":"SUM(#REF!)","v":{"$error":"#REF!"}},{"$f":"SUM(#REF!)","v":{"$error":"#REF!"}},{"$f":"SUM(#REF!)","v":{"$error":"#REF!"}},{"$f":"SUM(#REF!)","v":{"$error":"#REF!"}},{"$f":"SUM(#REF!)","v":{"$error":"#REF!"}},{"$f":"SUM(#REF!)","v":{"$error":"#REF!"}},{"$f":"SUM(#REF!)","v":{"$error":"#REF!"}},{"$f":"SUM(#REF!)","v":{"$error":"#REF!"}},{"$f":"SUM(#REF!)","v":{"$error":"#REF!"}},{"$f":"SUM(#REF!)","v":{"$error":"#REF!"}},{"$f":"SUM(#REF!)","v":{"$error":"#REF!"}},{"$f":"SUM(#REF!)","v":{"$error":"#REF!"}},{"$f":"SUM(#REF!)","v":{"$error":"#REF!"}},{"$f":"SUM(#REF!)","v":{"$error":"#REF!"}},{"$f":"SUM(#REF!)","v":{"$error":"#REF!"}},{"$f":"SUM(#REF!)","v":{"$error":"#REF!"}},{"$f":"SUM(#REF!)","v":{"$error":"#REF!"}},{"$f":"SUM(#REF!)","v":{"$error":"#REF!"}},{"$f":"SUM(#REF!)","v":{"$error":"#REF!"}},{"$f":"SUM(#REF!)","v":{"$error":"#REF!"}},{"$f":"SUM(#REF!)","v":{"$error":"#REF!"}},{"$f":"SUM(#REF!)","v":{"$error":"#REF!"}},{"$f":"SUM(#REF!)","v":{"$error":"#REF!"}},{"$f":"SUM(#REF!)","v":{"$error":"#REF!"}},{"$f":"SUM(#REF!)","v":{"$error":"#REF!"}},{"$f":"SUM(#REF!)","v":{"$error":"#REF!"}},{"$f":"SUM(#REF!)","v":{"$error":"#REF!"}},{"$f":"SUM(#REF!)","v":{"$error":"#REF!"}},{"$f":"SUM(#REF!)","v":{"$error":"#REF!"}},{"$f":"SUM(#REF!)","v":{"$error":"#REF!"}},{"$f":"SUM(#REF!)","v":{"$error":"#REF!"}},{"$f":"SUM(#REF!)","v":{"$error":"#REF!"}},{"$f":"SUM(#REF!)","v":{"$error":"#REF!"}},{"$f":"SUM(#REF!)","v":{"$error":"#REF!"}},{"$f":"SUM(#REF!)","v":{"$error":"#REF!"}},{"$f":"SUM(#REF!)","v":{"$error":"#REF!"}},{"$f":"SUM(#REF!)","v":{"$error":"#REF!"}},{"$f":"SUM(#REF!)","v":{"$error":"#REF!"}},{"$f":"SUM(#REF!)","v":{"$error":"#REF!"}},{"$f":"SUM(#REF!)","v":{"$error":"#REF!"}},{"$f":"SUM(#REF!)","v":{"$error":"#REF!"}},{"$f":"SUM(#REF!)","v":{"$error":"#REF!"}},{"$f":"SUM(#REF!)","v":{"$error":"#REF!"}},{"$f":"SUM(#REF!)","v":{"$error":"#REF!"}},{"$f":"SUM(#REF!)","v":{"$error":"#REF!"}},{"$f":"SUM(#REF!)","v":{"$error":"#REF!"}},{"$f":"SUM(#REF!)","v":{"$error":"#REF!"}},{"$f":"SUM(#REF!)","v":{"$error":"#REF!"}},{"$f":"SUM(#REF!)","v":{"$error":"#REF!"}},{"$f":"SUM(#REF!)","v":{"$error":"#REF!"}},{"$f":"SUM(#REF!)","v":{"$error":"#REF!"}},{"$f":"SUM(#REF!)","v":{"$error":"#REF!"}},{"$f":"SUM(#REF!)","v":{"$error":"#REF!"}},{"$f":"SUM(#REF!)","v":{"$error":"#REF!"}},{"$f":"SUM(#REF!)","v":{"$error":"#REF!"}},{"$f":"SUM(#REF!)","v":{"$error":"#REF!"}},{"$f":"SUM(#REF!)","v":{"$error":"#REF!"}},{"$f":"SUM(#REF!)","v":{"$error":"#REF!"}},{"$f":"SUM(#REF!)","v":{"$error":"#REF!"}},{"$f":"SUM(#REF!)","v":{"$error":"#REF!"}},{"$f":"SUM(#REF!)","v":{"$error":"#REF!"}},{"$f":"SUM(#REF!)","v":{"$error":"#REF!"}},{"$f":"SUM(#REF!)","v":{"$error":"#REF!"}},{"$f":"SUM(#REF!)","v":{"$error":"#REF!"}},{"$f":"SUM(#REF!)","v":{"$error":"#REF!"}},{"$f":"SUM(#REF!)","v":{"$error":"#REF!"}},{"$f":"SUM(#REF!)","v":{"$error":"#REF!"}},{"$f":"SUM(#REF!)","v":{"$error":"#REF!"}},{"$f":"SUM(#REF!)","v":{"$error":"#REF!"}},{"$f":"SUM(#REF!)","v":{"$error":"#REF!"}},{"$f":"SUM(#REF!)","v":{"$error":"#REF!"}},{"$f":"SUM(#REF!)","v":{"$error":"#REF!"}},{"$f":"SUM(#REF!)","v":{"$error":"#REF!"}},{"$f":"SUM(#REF!)","v":{"$error":"#REF!"}},{"$f":"SUM(#REF!)","v":{"$error":"#REF!"}},{"$f":"SUM(#REF!)","v":{"$error":"#REF!"}},{"$f":"SUM(#REF!)","v":{"$error":"#REF!"}},{"$f":"SUM(#REF!)","v":{"$error":"#REF!"}},{"$f":"SUM(#REF!)","v":{"$error":"#REF!"}},{"$f":"SUM(#REF!)","v":{"$error":"#REF!"}},{"$f":"SUM(#REF!)","v":{"$error":"#REF!"}},{"$f":"SUM(#REF!)","v":{"$error":"#REF!"}},{"$f":"SUM(#REF!)","v":{"$error":"#REF!"}},{"$f":"SUM(#REF!)","v":{"$error":"#REF!"}},{"$f":"SUM(#REF!)","v":{"$error":"#REF!"}},{"$f":"SUM(#REF!)","v":{"$error":"#REF!"}},{"$f":"SUM(#REF!)","v":{"$error":"#REF!"}},{"$f":"SUM(#REF!)","v":{"$error":"#REF!"}},{"$f":"SUM(#REF!)","v":{"$error":"#REF!"}},{"$f":"SUM(#REF!)","v":{"$error":"#REF!"}},{"$f":"SUM(#REF!)","v":{"$error":"#REF!"}},{"$f":"SUM(#REF!)","v":{"$error":"#REF!"}},{"$f":"SUM(#REF!)","v":{"$error":"#REF!"}},{"$f":"SUM(#REF!)","v":{"$error":"#REF!"}},{"$f":"SUM(#REF!)","v":{"$error":"#REF!"}},{"$f":"SUM(#REF!)","v":{"$error":"#REF!"}},{"$f":"SUM(#REF!)","v":{"$error":"#REF!"}},{"$f":"SUM(#REF!)","v":{"$error":"#REF!"}},{"$f":"SUM(#REF!)","v":{"$error":"#REF!"}},{"$f":"SUM(#REF!)","v":{"$error":"#REF!"}},{"$f":"SUM(#REF!)","v":{"$error":"#REF!"}},{"$f":"SUM(#REF!)","v":{"$error":"#REF!"}},{"$f":"SUM(#REF!)","v":{"$error":"#REF!"}},{"$f":"SUM(#REF!)","v":{"$error":"#REF!"}},{"$f":"SUM(#REF!)","v":{"$error":"#REF!"}},{"$f":"SUM(#REF!)","v":{"$error":"#REF!"}},{"$f":"SUM(#REF!)","v":{"$error":"#REF!"}},{"$f":"SUM(#REF!)","v":{"$error":"#REF!"}},{"$f":"SUM(#REF!)","v":{"$error":"#REF!"}},{"$f":"SUM(#REF!)","v":{"$error":"#REF!"}},{"$f":"SUM(#REF!)","v":{"$error":"#REF!"}},{"$f":"SUM(#REF!)","v":{"$error":"#REF!"}},{"$f":"SUM(#REF!)","v":{"$error":"#REF!"}},{"$f":"SUM(#REF!)","v":{"$error":"#REF!"}},{"$f":"SUM(#REF!)","v":{"$error":"#REF!"}},{"$f":"SUM(#REF!)","v":{"$error":"#REF!"}},{"$f":"SUM(#REF!)","v":{"$error":"#REF!"}},{"$f":"SUM(#REF!)","v":{"$error":"#REF!"}},{"$f":"SUM(#REF!)","v":{"$error":"#REF!"}},{"$f":"SUM(#REF!)","v":{"$error":"#REF!"}},{"$f":"SUM(#REF!)","v":{"$error":"#REF!"}},{"$f":"SUM(#REF!)","v":{"$error":"#REF!"}},{"$f":"SUM(#REF!)","v":{"$error":"#REF!"}},{"$f":"SUM(#REF!)","v":{"$error":"#REF!"}},{"$f":"SUM(#REF!)","v":{"$error":"#REF!"}},{"$f":"SUM(#REF!)","v":{"$error":"#REF!"}},{"$f":"SUM(#REF!)","v":{"$error":"#REF!"}},{"$f":"SUM(#REF!)","v":{"$error":"#REF!"}},{"$f":"SUM(#REF!)","v":{"$error":"#REF!"}},{"$f":"SUM(#REF!)","v":{"$error":"#REF!"}},{"$f":"SUM(#REF!)","v":{"$error":"#REF!"}},{"$f":"SUM(#REF!)","v":{"$error":"#REF!"}},{"$f":"SUM(#REF!)","v":{"$error":"#REF!"}},{"$f":"SUM(#REF!)","v":{"$error":"#REF!"}},{"$f":"SUM(#REF!)","v":{"$error":"#REF!"}},{"$f":"SUM(#REF!)","v":{"$error":"#REF!"}},{"$f":"SUM(#REF!)","v":{"$error":"#REF!"}},{"$f":"SUM(#REF!)","v":{"$error":"#REF!"}},{"$f":"SUM(#REF!)","v":{"$error":"#REF!"}},{"$f":"SUM(#REF!)","v":{"$error":"#REF!"}},{"$f":"SUM(#REF!)","v":{"$error":"#REF!"}},{"$f":"SUM(#REF!)","v":{"$error":"#REF!"}},{"$f":"SUM(#REF!)","v":{"$error":"#REF!"}},{"$f":"SUM(#REF!)","v":{"$error":"#REF!"}},{"$f":"SUM(#REF!)","v":{"$error":"#REF!"}},{"$f":"SUM(#REF!)","v":{"$error":"#REF!"}},{"$f":"SUM(#REF!)","v":{"$error":"#REF!"}},{"$f":"SUM(#REF!)","v":{"$error":"#REF!"}},{"$f":"SUM(#REF!)","v":{"$error":"#REF!"}},{"$f":"SUM(#REF!)","v":{"$error":"#REF!"}},{"$f":"SUM(#REF!)","v":{"$error":"#REF!"}},{"$f":"SUM(#REF!)","v":{"$error":"#REF!"}},{"$f":"SUM(#REF!)","v":{"$error":"#REF!"}},{"$f":"SUM(#REF!)","v":{"$error":"#REF!"}},{"$f":"SUM(#REF!)","v":{"$error":"#REF!"}},{"$f":"SUM(#REF!)","v":{"$error":"#REF!"}},{"$f":"SUM(#REF!)","v":{"$error":"#REF!"}},{"$f":"SUM(#REF!)","v":{"$error":"#REF!"}},{"$f":"SUM(#REF!)","v":{"$error":"#REF!"}},{"$f":"SUM(#REF!)","v":{"$error":"#REF!"}},{"$f":"SUM(#REF!)","v":{"$error":"#REF!"}},{"$f":"SUM(#REF!)","v":{"$error":"#REF!"}},{"$f":"SUM(#REF!)","v":{"$error":"#REF!"}},{"$f":"SUM(#REF!)","v":{"$error":"#REF!"}},{"$f":"SUM(#REF!)","v":{"$error":"#REF!"}},{"$f":"SUM(#REF!)","v":{"$error":"#REF!"}},{"$f":"SUM(#REF!)","v":{"$error":"#REF!"}},{"$f":"SUM(#REF!)","v":{"$error":"#REF!"}},{"$f":"SUM(#REF!)","v":{"$error":"#REF!"}},{"$f":"SUM(#REF!)","v":{"$error":"#REF!"}},{"$f":"SUM(#REF!)","v":{"$error":"#REF!"}},{"$f":"SUM(#REF!)","v":{"$error":"#REF!"}},{"$f":"SUM(#REF!)","v":{"$error":"#REF!"}},{"$f":"SUM(#REF!)","v":{"$error":"#REF!"}},{"$f":"SUM(#REF!)","v":{"$error":"#REF!"}},{"$f":"SUM(#REF!)","v":{"$error":"#REF!"}},{"$f":"SUM(#REF!)","v":{"$error":"#REF!"}},{"$f":"SUM(#REF!)","v":{"$error":"#REF!"}},{"$f":"SUM(#REF!)","v":{"$error":"#REF!"}},{"$f":"SUM(#REF!)","v":{"$error":"#REF!"}},{"$f":"SUM(#REF!)","v":{"$error":"#REF!"}},{"$f":"SUM(#REF!)","v":{"$error":"#REF!"}},{"$f":"SUM(#REF!)","v":{"$error":"#REF!"}},{"$f":"SUM(#REF!)","v":{"$error":"#REF!"}},{"$f":"SUM(#REF!)","v":{"$error":"#REF!"}},{"$f":"SUM(#REF!)","v":{"$error":"#REF!"}},{"$f":"SUM(#REF!)","v":{"$error":"#REF!"}},{"$f":"SUM(#REF!)","v":{"$error":"#REF!"}},{"$f":"SUM(#REF!)","v":{"$error":"#REF!"}},{"$f":"SUM(#REF!)","v":{"$error":"#REF!"}},{"$f":"SUM(#REF!)","v":{"$error":"#REF!"}},{"$f":"SUM(#REF!)","v":{"$error":"#REF!"}},{"$f":"SUM(#REF!)","v":{"$error":"#REF!"}},{"$f":"SUM(#REF!)","v":{"$error":"#REF!"}},{"$f":"SUM(#REF!)","v":{"$error":"#REF!"}},{"$f":"SUM(#REF!)","v":{"$error":"#REF!"}},{"$f":"SUM(#REF!)","v":{"$error":"#REF!"}},{"$f":"SUM(#REF!)","v":{"$error":"#REF!"}},{"$f":"SUM(#REF!)","v":{"$error":"#REF!"}},{"$f":"SUM(#REF!)","v":{"$error":"#REF!"}},{"$f":"SUM(#REF!)","v":{"$error":"#REF!"}},{"$f":"SUM(#REF!)","v":{"$error":"#REF!"}},{"$f":"SUM(#REF!)","v":{"$error":"#REF!"}},{"$f":"SUM(#REF!)","v":{"$error":"#REF!"}},{"$f":"SUM(#REF!)","v":{"$error":"#REF!"}},{"$f":"SUM(#REF!)","v":{"$error":"#REF!"}},{"$f":"SUM(#REF!)","v":{"$error":"#REF!"}},{"$f":"SUM(#REF!)","v":{"$error":"#REF!"}},{"$f":"SUM(#REF!)","v":{"$error":"#REF!"}},{"$f":"SUM(#REF!)","v":{"$error":"#REF!"}},{"$f":"SUM(#REF!)","v":{"$error":"#REF!"}},{"$f":"SUM(#REF!)","v":{"$error":"#REF!"}},{"$f":"SUM(#REF!)","v":{"$error":"#REF!"}},{"$f":"SUM(#REF!)","v":{"$error":"#REF!"}},{"$f":"SUM(#REF!)","v":{"$error":"#REF!"}},{"$f":"SUM(#REF!)","v":{"$error":"#REF!"}},{"$f":"SUM(#REF!)","v":{"$error":"#REF!"}},{"$f":"SUM(#REF!)","v":{"$error":"#REF!"}},{"$f":"SUM(#REF!)","v":{"$error":"#REF!"}},{"$f":"SUM(#REF!)","v":{"$error":"#REF!"}},{"$f":"SUM(#REF!)","v":{"$error":"#REF!"}},{"$f":"SUM(#REF!)","v":{"$error":"#REF!"}},{"$f":"SUM(#REF!)","v":{"$error":"#REF!"}},{"$f":"SUM(#REF!)","v":{"$error":"#REF!"}},{"$f":"SUM(#REF!)","v":{"$error":"#REF!"}},{"$f":"SUM(#REF!)","v":{"$error":"#REF!"}},{"$f":"SUM(#REF!)","v":{"$error":"#REF!"}},{"$f":"SUM(#REF!)","v":{"$error":"#REF!"}},{"$f":"SUM(#REF!)","v":{"$error":"#REF!"}},{"$f":"SUM(#REF!)","v":{"$error":"#REF!"}},{"$f":"SUM(#REF!)","v":{"$error":"#REF!"}},{"$f":"SUM(#REF!)","v":{"$error":"#REF!"}},{"$f":"SUM(#REF!)","v":{"$error":"#REF!"}},{"$f":"SUM(#REF!)","v":{"$error":"#REF!"}},{"$f":"SUM(#REF!)","v":{"$error":"#REF!"}},{"$f":"SUM(#REF!)","v":{"$error":"#REF!"}},{"$f":"SUM(#REF!)","v":{"$error":"#REF!"}},{"$f":"SUM(#REF!)","v":{"$error":"#REF!"}},{"$f":"SUM(#REF!)","v":{"$error":"#REF!"}},{"$f":"SUM(#REF!)","v":{"$error":"#REF!"}},{"$f":"SUM(#REF!)","v":{"$error":"#REF!"}},{"$f":"SUM(#REF!)","v":{"$error":"#REF!"}},{"$f":"SUM(#REF!)","v":{"$error":"#REF!"}},{"$f":"SUM(#REF!)","v":{"$error":"#REF!"}},{"$f":"SUM(#REF!)","v":{"$error":"#REF!"}},{"$f":"SUM(#REF!)","v":{"$error":"#REF!"}},{"$f":"SUM(#REF!)","v":{"$error":"#REF!"}},{"$f":"SUM(#REF!)","v":{"$error":"#REF!"}},{"$f":"SUM(#REF!)","v":{"$error":"#REF!"}},{"$f":"SUM(#REF!)","v":{"$error":"#REF!"}},{"$f":"SUM(#REF!)","v":{"$error":"#REF!"}},{"$f":"SUM(#REF!)","v":{"$error":"#REF!"}},{"$f":"SUM(#REF!)","v":{"$error":"#REF!"}},{"$f":"SUM(#REF!)","v":{"$error":"#REF!"}},{"$f":"SUM(#REF!)","v":{"$error":"#REF!"}},{"$f":"SUM(#REF!)","v":{"$error":"#REF!"}},{"$f":"SUM(#REF!)","v":{"$error":"#REF!"}},{"$f":"SUM(#REF!)","v":{"$error":"#REF!"}},{"$f":"SUM(#REF!)","v":{"$error":"#REF!"}},{"$f":"SUM(#REF!)","v":{"$error":"#REF!"}},{"$f":"SUM(#REF!)","v":{"$error":"#REF!"}},{"$f":"SUM(#REF!)","v":{"$error":"#REF!"}},{"$f":"SUM(#REF!)","v":{"$error":"#REF!"}},{"$f":"SUM(#REF!)","v":{"$error":"#REF!"}},{"$f":"SUM(#REF!)","v":{"$error":"#REF!"}},{"$f":"SUM(#REF!)","v":{"$error":"#REF!"}},{"$f":"SUM(#REF!)","v":{"$error":"#REF!"}},{"$f":"SUM(#REF!)","v":{"$error":"#REF!"}},{"$f":"SUM(#REF!)","v":{"$error":"#REF!"}},{"$f":"SUM(#REF!)","v":{"$error":"#REF!"}},{"$f":"SUM(#REF!)","v":{"$error":"#REF!"}},{"$f":"SUM(#REF!)","v":{"$error":"#REF!"}},{"$f":"SUM(#REF!)","v":{"$error":"#REF!"}},{"$f":"SUM(#REF!)","v":{"$error":"#REF!"}},{"$f":"SUM(#REF!)","v":{"$error":"#REF!"}},{"$f":"SUM(#REF!)","v":{"$error":"#REF!"}},{"$f":"SUM(#REF!)","v":{"$error":"#REF!"}},{"$f":"SUM(#REF!)","v":{"$error":"#REF!"}},{"$f":"SUM(#REF!)","v":{"$error":"#REF!"}},{"$f":"SUM(#REF!)","v":{"$error":"#REF!"}},{"$f":"SUM(#REF!)","v":{"$error":"#REF!"}},{"$f":"SUM(#REF!)","v":{"$error":"#REF!"}},{"$f":"SUM(#REF!)","v":{"$error":"#REF!"}},{"$f":"SUM(#REF!)","v":{"$error":"#REF!"}},{"$f":"SUM(#REF!)","v":{"$error":"#REF!"}},{"$f":"SUM(#REF!)","v":{"$error":"#REF!"}},{"$f":"SUM(#REF!)","v":{"$error":"#REF!"}},{"$f":"SUM(#REF!)","v":{"$error":"#REF!"}},{"$f":"SUM(#REF!)","v":{"$error":"#REF!"}},{"$f":"SUM(#REF!)","v":{"$error":"#REF!"}},{"$f":"SUM(#REF!)","v":{"$error":"#REF!"}},{"$f":"SUM(#REF!)","v":{"$error":"#REF!"}},{"$f":"SUM(#REF!)","v":{"$error":"#REF!"}},{"$f":"SUM(#REF!)","v":{"$error":"#REF!"}},{"$f":"SUM(#REF!)","v":{"$error":"#REF!"}},{"$f":"SUM(#REF!)","v":{"$error":"#REF!"}},{"$f":"SUM(#REF!)","v":{"$error":"#REF!"}},{"$f":"SUM(#REF!)","v":{"$error":"#REF!"}},{"$f":"SUM(#REF!)","v":{"$error":"#REF!"}},{"$f":"SUM(#REF!)","v":{"$error":"#REF!"}},{"$f":"SUM(#REF!)","v":{"$error":"#REF!"}},{"$f":"SUM(#REF!)","v":{"$error":"#REF!"}},{"$f":"SUM(#REF!)","v":{"$error":"#REF!"}},{"$f":"SUM(#REF!)","v":{"$error":"#REF!"}},{"$f":"SUM(#REF!)","v":{"$error":"#REF!"}},{"$f":"SUM(#REF!)","v":{"$error":"#REF!"}},{"$f":"SUM(#REF!)","v":{"$error":"#REF!"}},{"$f":"SUM(#REF!)","v":{"$error":"#REF!"}},{"$f":"SUM(#REF!)","v":{"$error":"#REF!"}},{"$f":"SUM(#REF!)","v":{"$error":"#REF!"}},{"$f":"SUM(#REF!)","v":{"$error":"#REF!"}},{"$f":"SUM(#REF!)","v":{"$error":"#REF!"}},{"$f":"SUM(#REF!)","v":{"$error":"#REF!"}},{"$f":"SUM(#REF!)","v":{"$error":"#REF!"}},{"$f":"SUM(#REF!)","v":{"$error":"#REF!"}},{"$f":"SUM(#REF!)","v":{"$error":"#REF!"}},{"$f":"SUM(#REF!)","v":{"$error":"#REF!"}},{"$f":"SUM(#REF!)","v":{"$error":"#REF!"}},{"$f":"SUM(#REF!)","v":{"$error":"#REF!"}},{"$f":"SUM(#REF!)","v":{"$error":"#REF!"}},{"$f":"SUM(#REF!)","v":{"$error":"#REF!"}},{"$f":"SUM(#REF!)","v":{"$error":"#REF!"}},{"$f":"SUM(#REF!)","v":{"$error":"#REF!"}},{"$f":"SUM(#REF!)","v":{"$error":"#REF!"}},{"$f":"SUM(#REF!)","v":{"$error":"#REF!"}},{"$f":"SUM(#REF!)","v":{"$error":"#REF!"}},{"$f":"SUM(#REF!)","v":{"$error":"#REF!"}},{"$f":"SUM(#REF!)","v":{"$error":"#REF!"}},{"$f":"SUM(#REF!)","v":{"$error":"#REF!"}},{"$f":"SUM(#REF!)","v":{"$error":"#REF!"}},{"$f":"SUM(#REF!)","v":{"$error":"#REF!"}},{"$f":"SUM(#REF!)","v":{"$error":"#REF!"}},{"$f":"SUM(#REF!)","v":{"$error":"#REF!"}},{"$f":"SUM(#REF!)","v":{"$error":"#REF!"}},{"$f":"SUM(#REF!)","v":{"$error":"#REF!"}},{"$f":"SUM(#REF!)","v":{"$error":"#REF!"}},{"$f":"SUM(#REF!)","v":{"$error":"#REF!"}},{"$f":"SUM(#REF!)","v":{"$error":"#REF!"}},{"$f":"SUM(#REF!)","v":{"$error":"#REF!"}},{"$f":"SUM(#REF!)","v":{"$error":"#REF!"}},{"$f":"SUM(#REF!)","v":{"$error":"#REF!"}},{"$f":"SUM(#REF!)","v":{"$error":"#REF!"}},{"$f":"SUM(#REF!)","v":{"$error":"#REF!"}},{"$f":"SUM(#REF!)","v":{"$error":"#REF!"}},{"$f":"SUM(#REF!)","v":{"$error":"#REF!"}},{"$f":"SUM(#REF!)","v":{"$error":"#REF!"}},{"$f":"SUM(#REF!)","v":{"$error":"#REF!"}},{"$f":"SUM(#REF!)","v":{"$error":"#REF!"}},{"$f":"SUM(#REF!)","v":{"$error":"#REF!"}},{"$f":"SUM(#REF!)","v":{"$error":"#REF!"}},{"$f":"SUM(#REF!)","v":{"$error":"#REF!"}},{"$f":"SUM(#REF!)","v":{"$error":"#REF!"}},{"$f":"SUM(#REF!)","v":{"$error":"#REF!"}},{"$f":"SUM(#REF!)","v":{"$error":"#REF!"}},{"$f":"SUM(#REF!)","v":{"$error":"#REF!"}},{"$f":"SUM(#REF!)","v":{"$error":"#REF!"}},{"$f":"SUM(#REF!)","v":{"$error":"#REF!"}},{"$f":"SUM(#REF!)","v":{"$error":"#REF!"}},{"$f":"SUM(#REF!)","v":{"$error":"#REF!"}},{"$f":"SUM(#REF!)","v":{"$error":"#REF!"}},{"$f":"SUM(#REF!)","v":{"$error":"#REF!"}},{"$f":"SUM(#REF!)","v":{"$error":"#REF!"}},{"$f":"SUM(#REF!)","v":{"$error":"#REF!"}},{"$f":"SUM(#REF!)","v":{"$error":"#REF!"}},{"$f":"SUM(#REF!)","v":{"$error":"#REF!"}},{"$f":"SUM(#REF!)","v":{"$error":"#REF!"}},{"$f":"SUM(#REF!)","v":{"$error":"#REF!"}},{"$f":"SUM(#REF!)","v":{"$error":"#REF!"}},{"$f":"SUM(#REF!)","v":{"$error":"#REF!"}},{"$f":"SUM(#REF!)","v":{"$error":"#REF!"}},{"$f":"SUM(#REF!)","v":{"$error":"#REF!"}},{"$f":"SUM(#REF!)","v":{"$error":"#REF!"}},{"$f":"SUM(#REF!)","v":{"$error":"#REF!"}},{"$f":"SUM(#REF!)","v":{"$error":"#REF!"}},{"$f":"SUM(#REF!)","v":{"$error":"#REF!"}},{"$f":"SUM(#REF!)","v":{"$error":"#REF!"}},{"$f":"SUM(#REF!)","v":{"$error":"#REF!"}},{"$f":"SUM(#REF!)","v":{"$error":"#REF!"}},{"$f":"SUM(#REF!)","v":{"$error":"#REF!"}},{"$f":"SUM(#REF!)","v":{"$error":"#REF!"}},{"$f":"SUM(#REF!)","v":{"$error":"#REF!"}},{"$f":"SUM(#REF!)","v":{"$error":"#REF!"}},{"$f":"SUM(#REF!)","v":{"$error":"#REF!"}},{"$f":"SUM(#REF!)","v":{"$error":"#REF!"}},{"$f":"SUM(#REF!)","v":{"$error":"#REF!"}},{"$f":"SUM(#REF!)","v":{"$error":"#REF!"}},{"$f":"SUM(#REF!)","v":{"$error":"#REF!"}},{"$f":"SUM(#REF!)","v":{"$error":"#REF!"}},{"$f":"SUM(#REF!)","v":{"$error":"#REF!"}},{"$f":"SUM(#REF!)","v":{"$error":"#REF!"}},{"$f":"SUM(#REF!)","v":{"$error":"#REF!"}},{"$f":"SUM(#REF!)","v":{"$error":"#REF!"}},{"$f":"SUM(#REF!)","v":{"$error":"#REF!"}},{"$f":"SUM(#REF!)","v":{"$error":"#REF!"}},{"$f":"SUM(#REF!)","v":{"$error":"#REF!"}},{"$f":"SUM(#REF!)","v":{"$error":"#REF!"}},{"$f":"SUM(#REF!)","v":{"$error":"#REF!"}},{"$f":"SUM(#REF!)","v":{"$error":"#REF!"}},{"$f":"SUM(#REF!)","v":{"$error":"#REF!"}},{"$f":"SUM(#REF!)","v":{"$error":"#REF!"}},{"$f":"SUM(#REF!)","v":{"$error":"#REF!"}},{"$f":"SUM(#REF!)","v":{"$error":"#REF!"}},{"$f":"SUM(#REF!)","v":{"$error":"#REF!"}},{"$f":"SUM(#REF!)","v":{"$error":"#REF!"}},{"$f":"SUM(#REF!)","v":{"$error":"#REF!"}},{"$f":"SUM(#REF!)","v":{"$error":"#REF!"}},{"$f":"SUM(#REF!)","v":{"$error":"#REF!"}},{"$f":"SUM(#REF!)","v":{"$error":"#REF!"}},{"$f":"SUM(#REF!)","v":{"$error":"#REF!"}},{"$f":"SUM(#REF!)","v":{"$error":"#REF!"}},{"$f":"SUM(#REF!)","v":{"$error":"#REF!"}},{"$f":"SUM(#REF!)","v":{"$error":"#REF!"}},{"$f":"SUM(#REF!)","v":{"$error":"#REF!"}},{"$f":"SUM(#REF!)","v":{"$error":"#REF!"}},{"$f":"SUM(#REF!)","v":{"$error":"#REF!"}},{"$f":"SUM(#REF!)","v":{"$error":"#REF!"}},{"$f":"SUM(#REF!)","v":{"$error":"#REF!"}},{"$f":"SUM(#REF!)","v":{"$error":"#REF!"}},{"$f":"SUM(#REF!)","v":{"$error":"#REF!"}},{"$f":"SUM(#REF!)","v":{"$error":"#REF!"}},{"$f":"SUM(#REF!)","v":{"$error":"#REF!"}},{"$f":"SUM(#REF!)","v":{"$error":"#REF!"}},{"$f":"SUM(#REF!)","v":{"$error":"#REF!"}},{"$f":"SUM(#REF!)","v":{"$error":"#REF!"}},{"$f":"SUM(#REF!)","v":{"$error":"#REF!"}},{"$f":"SUM(#REF!)","v":{"$error":"#REF!"}},{"$f":"SUM(#REF!)","v":{"$error":"#REF!"}},{"$f":"SUM(#REF!)","v":{"$error":"#REF!"}},{"$f":"SUM(#REF!)","v":{"$error":"#REF!"}},{"$f":"SUM(#REF!)","v":{"$error":"#REF!"}},{"$f":"SUM(#REF!)","v":{"$error":"#REF!"}},{"$f":"SUM(#REF!)","v":{"$error":"#REF!"}},{"$f":"SUM(#REF!)","v":{"$error":"#REF!"}},{"$f":"SUM(#REF!)","v":{"$error":"#REF!"}},{"$f":"SUM(#REF!)","v":{"$error":"#REF!"}},{"$f":"SUM(#REF!)","v":{"$error":"#REF!"}},{"$f":"SUM(#REF!)","v":{"$error":"#REF!"}},{"$f":"SUM(#REF!)","v":{"$error":"#REF!"}},{"$f":"SUM(#REF!)","v":{"$error":"#REF!"}},{"$f":"SUM(#REF!)","v":{"$error":"#REF!"}},{"$f":"SUM(#REF!)","v":{"$error":"#REF!"}},{"$f":"SUM(#REF!)","v":{"$error":"#REF!"}},{"$f":"SUM(#REF!)","v":{"$error":"#REF!"}},{"$f":"SUM(#REF!)","v":{"$error":"#REF!"}},{"$f":"SUM(#REF!)","v":{"$error":"#REF!"}},{"$f":"SUM(#REF!)","v":{"$error":"#REF!"}},{"$f":"SUM(#REF!)","v":{"$error":"#REF!"}},{"$f":"SUM(#REF!)","v":{"$error":"#REF!"}},{"$f":"SUM(#REF!)","v":{"$error":"#REF!"}},{"$f":"SUM(#REF!)","v":{"$error":"#REF!"}},{"$f":"SUM(#REF!)","v":{"$error":"#REF!"}},{"$f":"SUM(#REF!)","v":{"$error":"#REF!"}},{"$f":"SUM(#REF!)","v":{"$error":"#REF!"}},{"$f":"SUM(#REF!)","v":{"$error":"#REF!"}},{"$f":"SUM(#REF!)","v":{"$error":"#REF!"}},{"$f":"SUM(#REF!)","v":{"$error":"#REF!"}},{"$f":"SUM(#REF!)","v":{"$error":"#REF!"}},{"$f":"SUM(#REF!)","v":{"$error":"#REF!"}},{"$f":"SUM(#REF!)","v":{"$error":"#REF!"}},{"$f":"SUM(#REF!)","v":{"$error":"#REF!"}},{"$f":"SUM(#REF!)","v":{"$error":"#REF!"}},{"$f":"SUM(#REF!)","v":{"$error":"#REF!"}},{"$f":"SUM(#REF!)","v":{"$error":"#REF!"}},{"$f":"SUM(#REF!)","v":{"$error":"#REF!"}},{"$f":"SUM(#REF!)","v":{"$error":"#REF!"}},{"$f":"SUM(#REF!)","v":{"$error":"#REF!"}},{"$f":"SUM(#REF!)","v":{"$error":"#REF!"}},{"$f":"SUM(#REF!)","v":{"$error":"#REF!"}},{"$f":"SUM(#REF!)","v":{"$error":"#REF!"}},{"$f":"SUM(#REF!)","v":{"$error":"#REF!"}},{"$f":"SUM(#REF!)","v":{"$error":"#REF!"}},{"$f":"SUM(#REF!)","v":{"$error":"#REF!"}},{"$f":"SUM(#REF!)","v":{"$error":"#REF!"}},{"$f":"SUM(#REF!)","v":{"$error":"#REF!"}},{"$f":"SUM(#REF!)","v":{"$error":"#REF!"}},{"$f":"SUM(#REF!)","v":{"$error":"#REF!"}},{"$f":"SUM(#REF!)","v":{"$error":"#REF!"}},{"$f":"SUM(#REF!)","v":{"$error":"#REF!"}},{"$f":"SUM(#REF!)","v":{"$error":"#REF!"}},{"$f":"SUM(#REF!)","v":{"$error":"#REF!"}},{"$f":"SUM(#REF!)","v":{"$error":"#REF!"}},{"$f":"SUM(#REF!)","v":{"$error":"#REF!"}},{"$f":"SUM(#REF!)","v":{"$error":"#REF!"}},{"$f":"SUM(#REF!)","v":{"$error":"#REF!"}},{"$f":"SUM(#REF!)","v":{"$error":"#REF!"}},{"$f":"SUM(#REF!)","v":{"$error":"#REF!"}},{"$f":"SUM(#REF!)","v":{"$error":"#REF!"}},{"$f":"SUM(#REF!)","v":{"$error":"#REF!"}},{"$f":"SUM(#REF!)","v":{"$error":"#REF!"}},{"$f":"SUM(#REF!)","v":{"$error":"#REF!"}},{"$f":"SUM(#REF!)","v":{"$error":"#REF!"}},{"$f":"SUM(#REF!)","v":{"$error":"#REF!"}},{"$f":"SUM(#REF!)","v":{"$error":"#REF!"}},{"$f":"SUM(#REF!)","v":{"$error":"#REF!"}},{"$f":"SUM(#REF!)","v":{"$error":"#REF!"}},{"$f":"SUM(#REF!)","v":{"$error":"#REF!"}},{"$f":"SUM(#REF!)","v":{"$error":"#REF!"}},{"$f":"SUM(#REF!)","v":{"$error":"#REF!"}},{"$f":"SUM(#REF!)","v":{"$error":"#REF!"}},{"$f":"SUM(#REF!)","v":{"$error":"#REF!"}},{"$f":"SUM(#REF!)","v":{"$error":"#REF!"}},{"$f":"SUM(#REF!)","v":{"$error":"#REF!"}},{"$f":"SUM(#REF!)","v":{"$error":"#REF!"}},{"$f":"SUM(#REF!)","v":{"$error":"#REF!"}},{"$f":"SUM(#REF!)","v":{"$error":"#REF!"}},{"$f":"SUM(#REF!)","v":{"$error":"#REF!"}},{"$f":"SUM(#REF!)","v":{"$error":"#REF!"}},{"$f":"SUM(#REF!)","v":{"$error":"#REF!"}},{"$f":"SUM(#REF!)","v":{"$error":"#REF!"}},{"$f":"SUM(#REF!)","v":{"$error":"#REF!"}},{"$f":"SUM(#REF!)","v":{"$error":"#REF!"}},{"$f":"SUM(#REF!)","v":{"$error":"#REF!"}},{"$f":"SUM(#REF!)","v":{"$error":"#REF!"}},{"$f":"SUM(#REF!)","v":{"$error":"#REF!"}},{"$f":"SUM(#REF!)","v":{"$error":"#REF!"}},{"$f":"SUM(#REF!)","v":{"$error":"#REF!"}},{"$f":"SUM(#REF!)","v":{"$error":"#REF!"}},{"$f":"SUM(#REF!)","v":{"$error":"#REF!"}},{"$f":"SUM(#REF!)","v":{"$error":"#REF!"}},{"$f":"SUM(#REF!)","v":{"$error":"#REF!"}},{"$f":"SUM(#REF!)","v":{"$error":"#REF!"}},{"$f":"SUM(#REF!)","v":{"$error":"#REF!"}},{"$f":"SUM(#REF!)","v":{"$error":"#REF!"}},{"$f":"SUM(#REF!)","v":{"$error":"#REF!"}},{"$f":"SUM(#REF!)","v":{"$error":"#REF!"}},{"$f":"SUM(#REF!)","v":{"$error":"#REF!"}},{"$f":"SUM(#REF!)","v":{"$error":"#REF!"}},{"$f":"SUM(#REF!)","v":{"$error":"#REF!"}},{"$f":"SUM(#REF!)","v":{"$error":"#REF!"}},{"$f":"SUM(#REF!)","v":{"$error":"#REF!"}},{"$f":"SUM(#REF!)","v":{"$error":"#REF!"}},{"$f":"SUM(#REF!)","v":{"$error":"#REF!"}},{"$f":"SUM(#REF!)","v":{"$error":"#REF!"}},{"$f":"SUM(#REF!)","v":{"$error":"#REF!"}},{"$f":"SUM(#REF!)","v":{"$error":"#REF!"}},{"$f":"SUM(#REF!)","v":{"$error":"#REF!"}},{"$f":"SUM(#REF!)","v":{"$error":"#REF!"}},{"$f":"SUM(#REF!)","v":{"$error":"#REF!"}},{"$f":"SUM(#REF!)","v":{"$error":"#REF!"}},{"$f":"SUM(#REF!)","v":{"$error":"#REF!"}},{"$f":"SUM(#REF!)","v":{"$error":"#REF!"}},{"$f":"SUM(#REF!)","v":{"$error":"#REF!"}},{"$f":"SUM(#REF!)","v":{"$error":"#REF!"}},{"$f":"SUM(#REF!)","v":{"$error":"#REF!"}},{"$f":"SUM(#REF!)","v":{"$error":"#REF!"}},{"$f":"SUM(#REF!)","v":{"$error":"#REF!"}},{"$f":"SUM(#REF!)","v":{"$error":"#REF!"}},{"$f":"SUM(#REF!)","v":{"$error":"#REF!"}},{"$f":"SUM(#REF!)","v":{"$error":"#REF!"}},{"$f":"SUM(#REF!)","v":{"$error":"#REF!"}},{"$f":"SUM(#REF!)","v":{"$error":"#REF!"}},{"$f":"SUM(#REF!)","v":{"$error":"#REF!"}},{"$f":"SUM(#REF!)","v":{"$error":"#REF!"}},{"$f":"SUM(#REF!)","v":{"$error":"#REF!"}},{"$f":"SUM(#REF!)","v":{"$error":"#REF!"}},{"$f":"SUM(#REF!)","v":{"$error":"#REF!"}},{"$f":"SUM(#REF!)","v":{"$error":"#REF!"}},{"$f":"SUM(#REF!)","v":{"$error":"#REF!"}},{"$f":"SUM(#REF!)","v":{"$error":"#REF!"}},{"$f":"SUM(#REF!)","v":{"$error":"#REF!"}},{"$f":"SUM(#REF!)","v":{"$error":"#REF!"}},{"$f":"SUM(#REF!)","v":{"$error":"#REF!"}},{"$f":"SUM(#REF!)","v":{"$error":"#REF!"}},{"$f":"SUM(#REF!)","v":{"$error":"#REF!"}},{"$f":"SUM(#REF!)","v":{"$error":"#REF!"}},{"$f":"SUM(#REF!)","v":{"$error":"#REF!"}},{"$f":"SUM(#REF!)","v":{"$error":"#REF!"}},{"$f":"SUM(#REF!)","v":{"$error":"#REF!"}},{"$f":"SUM(#REF!)","v":{"$error":"#REF!"}},{"$f":"SUM(#REF!)","v":{"$error":"#REF!"}},{"$f":"SUM(#REF!)","v":{"$error":"#REF!"}},{"$f":"SUM(#REF!)","v":{"$error":"#REF!"}},{"$f":"SUM(#REF!)","v":{"$error":"#REF!"}},{"$f":"SUM(#REF!)","v":{"$error":"#REF!"}},{"$f":"SUM(#REF!)","v":{"$error":"#REF!"}},{"$f":"SUM(#REF!)","v":{"$error":"#REF!"}},{"$f":"SUM(#REF!)","v":{"$error":"#REF!"}},{"$f":"SUM(#REF!)","v":{"$error":"#REF!"}},{"$f":"SUM(#REF!)","v":{"$error":"#REF!"}},{"$f":"SUM(#REF!)","v":{"$error":"#REF!"}},{"$f":"SUM(#REF!)","v":{"$error":"#REF!"}},{"$f":"SUM(#REF!)","v":{"$error":"#REF!"}},{"$f":"SUM(#REF!)","v":{"$error":"#REF!"}},{"$f":"SUM(#REF!)","v":{"$error":"#REF!"}},{"$f":"SUM(#REF!)","v":{"$error":"#REF!"}},{"$f":"SUM(#REF!)","v":{"$error":"#REF!"}},{"$f":"SUM(#REF!)","v":{"$error":"#REF!"}},{"$f":"SUM(#REF!)","v":{"$error":"#REF!"}},{"$f":"SUM(#REF!)","v":{"$error":"#REF!"}},{"$f":"SUM(#REF!)","v":{"$error":"#REF!"}},{"$f":"SUM(#REF!)","v":{"$error":"#REF!"}},{"$f":"SUM(#REF!)","v":{"$error":"#REF!"}},{"$f":"SUM(#REF!)","v":{"$error":"#REF!"}},{"$f":"SUM(#REF!)","v":{"$error":"#REF!"}},{"$f":"SUM(#REF!)","v":{"$error":"#REF!"}},{"$f":"SUM(#REF!)","v":{"$error":"#REF!"}},{"$f":"SUM(#REF!)","v":{"$error":"#REF!"}},{"$f":"SUM(#REF!)","v":{"$error":"#REF!"}},{"$f":"SUM(#REF!)","v":{"$error":"#REF!"}},{"$f":"SUM(#REF!)","v":{"$error":"#REF!"}},{"$f":"SUM(#REF!)","v":{"$error":"#REF!"}},{"$f":"SUM(#REF!)","v":{"$error":"#REF!"}},{"$f":"SUM(#REF!)","v":{"$error":"#REF!"}},{"$f":"SUM(#REF!)","v":{"$error":"#REF!"}},{"$f":"SUM(#REF!)","v":{"$error":"#REF!"}},{"$f":"SUM(#REF!)","v":{"$error":"#REF!"}},{"$f":"SUM(#REF!)","v":{"$error":"#REF!"}},{"$f":"SUM(#REF!)","v":{"$error":"#REF!"}},{"$f":"SUM(#REF!)","v":{"$error":"#REF!"}},{"$f":"SUM(#REF!)","v":{"$error":"#REF!"}},{"$f":"SUM(#REF!)","v":{"$error":"#REF!"}},{"$f":"SUM(#REF!)","v":{"$error":"#REF!"}},{"$f":"SUM(#REF!)","v":{"$error":"#REF!"}},{"$f":"SUM(#REF!)","v":{"$error":"#REF!"}},{"$f":"SUM(#REF!)","v":{"$error":"#REF!"}},{"$f":"SUM(#REF!)","v":{"$error":"#REF!"}},{"$f":"SUM(#REF!)","v":{"$error":"#REF!"}},{"$f":"SUM(#REF!)","v":{"$error":"#REF!"}},{"$f":"SUM(#REF!)","v":{"$error":"#REF!"}},{"$f":"SUM(#REF!)","v":{"$error":"#REF!"}},{"$f":"SUM(#REF!)","v":{"$error":"#REF!"}},{"$f":"SUM(#REF!)","v":{"$error":"#REF!"}},{"$f":"SUM(#REF!)","v":{"$error":"#REF!"}},{"$f":"SUM(#REF!)","v":{"$error":"#REF!"}},{"$f":"SUM(#REF!)","v":{"$error":"#REF!"}},{"$f":"SUM(#REF!)","v":{"$error":"#REF!"}},{"$f":"SUM(#REF!)","v":{"$error":"#REF!"}},{"$f":"SUM(#REF!)","v":{"$error":"#REF!"}},{"$f":"SUM(#REF!)","v":{"$error":"#REF!"}},{"$f":"SUM(#REF!)","v":{"$error":"#REF!"}},{"$f":"SUM(#REF!)","v":{"$error":"#REF!"}},{"$f":"SUM(#REF!)","v":{"$error":"#REF!"}},{"$f":"SUM(#REF!)","v":{"$error":"#REF!"}},{"$f":"SUM(#REF!)","v":{"$error":"#REF!"}},{"$f":"SUM(#REF!)","v":{"$error":"#REF!"}},{"$f":"SUM(#REF!)","v":{"$error":"#REF!"}},{"$f":"SUM(#REF!)","v":{"$error":"#REF!"}},{"$f":"SUM(#REF!)","v":{"$error":"#REF!"}},{"$f":"SUM(#REF!)","v":{"$error":"#REF!"}},{"$f":"SUM(#REF!)","v":{"$error":"#REF!"}},{"$f":"SUM(#REF!)","v":{"$error":"#REF!"}},{"$f":"SUM(#REF!)","v":{"$error":"#REF!"}},{"$f":"SUM(#REF!)","v":{"$error":"#REF!"}},{"$f":"SUM(#REF!)","v":{"$error":"#REF!"}},{"$f":"SUM(#REF!)","v":{"$error":"#REF!"}},{"$f":"SUM(#REF!)","v":{"$error":"#REF!"}},{"$f":"SUM(#REF!)","v":{"$error":"#REF!"}},{"$f":"SUM(#REF!)","v":{"$error":"#REF!"}},{"$f":"SUM(#REF!)","v":{"$error":"#REF!"}},{"$f":"SUM(#REF!)","v":{"$error":"#REF!"}},{"$f":"SUM(#REF!)","v":{"$error":"#REF!"}},{"$f":"SUM(#REF!)","v":{"$error":"#REF!"}},{"$f":"SUM(#REF!)","v":{"$error":"#REF!"}},{"$f":"SUM(#REF!)","v":{"$error":"#REF!"}},{"$f":"SUM(#REF!)","v":{"$error":"#REF!"}},{"$f":"SUM(#REF!)","v":{"$error":"#REF!"}},{"$f":"SUM(#REF!)","v":{"$error":"#REF!"}},{"$f":"SUM(#REF!)","v":{"$error":"#REF!"}},{"$f":"SUM(#REF!)","v":{"$error":"#REF!"}},{"$f":"SUM(#REF!)","v":{"$error":"#REF!"}},{"$f":"SUM(#REF!)","v":{"$error":"#REF!"}},{"$f":"SUM(#REF!)","v":{"$error":"#REF!"}},{"$f":"SUM(#REF!)","v":{"$error":"#REF!"}},{"$f":"SUM(#REF!)","v":{"$error":"#REF!"}},{"$f":"SUM(#REF!)","v":{"$error":"#REF!"}},{"$f":"SUM(#REF!)","v":{"$error":"#REF!"}},{"$f":"SUM(#REF!)","v":{"$error":"#REF!"}},{"$f":"SUM(#REF!)","v":{"$error":"#REF!"}},{"$f":"SUM(#REF!)","v":{"$error":"#REF!"}},{"$f":"SUM(#REF!)","v":{"$error":"#REF!"}},{"$f":"SUM(#REF!)","v":{"$error":"#REF!"}},{"$f":"SUM(#REF!)","v":{"$error":"#REF!"}},{"$f":"SUM(#REF!)","v":{"$error":"#REF!"}},{"$f":"SUM(#REF!)","v":{"$error":"#REF!"}},{"$f":"SUM(#REF!)","v":{"$error":"#REF!"}},{"$f":"SUM(#REF!)","v":{"$error":"#REF!"}},{"$f":"SUM(#REF!)","v":{"$error":"#REF!"}},{"$f":"SUM(#REF!)","v":{"$error":"#REF!"}},{"$f":"SUM(#REF!)","v":{"$error":"#REF!"}},{"$f":"SUM(#REF!)","v":{"$error":"#REF!"}},{"$f":"SUM(#REF!)","v":{"$error":"#REF!"}},{"$f":"SUM(#REF!)","v":{"$error":"#REF!"}},{"$f":"SUM(#REF!)","v":{"$error":"#REF!"}},{"$f":"SUM(#REF!)","v":{"$error":"#REF!"}},{"$f":"SUM(#REF!)","v":{"$error":"#REF!"}},{"$f":"SUM(#REF!)","v":{"$error":"#REF!"}},{"$f":"SUM(#REF!)","v":{"$error":"#REF!"}},{"$f":"SUM(#REF!)","v":{"$error":"#REF!"}},{"$f":"SUM(#REF!)","v":{"$error":"#REF!"}},{"$f":"SUM(#REF!)","v":{"$error":"#REF!"}},{"$f":"SUM(#REF!)","v":{"$error":"#REF!"}},{"$f":"SUM(#REF!)","v":{"$error":"#REF!"}},{"$f":"SUM(#REF!)","v":{"$error":"#REF!"}},{"$f":"SUM(#REF!)","v":{"$error":"#REF!"}},{"$f":"SUM(#REF!)","v":{"$error":"#REF!"}},{"$f":"SUM(#REF!)","v":{"$error":"#REF!"}},{"$f":"SUM(#REF!)","v":{"$error":"#REF!"}},{"$f":"SUM(#REF!)","v":{"$error":"#REF!"}},{"$f":"SUM(#REF!)","v":{"$error":"#REF!"}},{"$f":"SUM(#REF!)","v":{"$error":"#REF!"}},{"$f":"SUM(#REF!)","v":{"$error":"#REF!"}},{"$f":"SUM(#REF!)","v":{"$error":"#REF!"}},{"$f":"SUM(#REF!)","v":{"$error":"#REF!"}},{"$f":"SUM(#REF!)","v":{"$error":"#REF!"}},{"$f":"SUM(#REF!)","v":{"$error":"#REF!"}},{"$f":"SUM(#REF!)","v":{"$error":"#REF!"}},{"$f":"SUM(#REF!)","v":{"$error":"#REF!"}},{"$f":"SUM(#REF!)","v":{"$error":"#REF!"}},{"$f":"SUM(#REF!)","v":{"$error":"#REF!"}},{"$f":"SUM(#REF!)","v":{"$error":"#REF!"}},{"$f":"SUM(#REF!)","v":{"$error":"#REF!"}},{"$f":"SUM(#REF!)","v":{"$error":"#REF!"}},{"$f":"SUM(#REF!)","v":{"$error":"#REF!"}},{"$f":"SUM(#REF!)","v":{"$error":"#REF!"}},{"$f":"SUM(#REF!)","v":{"$error":"#REF!"}},{"$f":"SUM(#REF!)","v":{"$error":"#REF!"}},{"$f":"SUM(#REF!)","v":{"$error":"#REF!"}},{"$f":"SUM(#REF!)","v":{"$error":"#REF!"}},{"$f":"SUM(#REF!)","v":{"$error":"#REF!"}},{"$f":"SUM(#REF!)","v":{"$error":"#REF!"}},{"$f":"SUM(#REF!)","v":{"$error":"#REF!"}},{"$f":"SUM(#REF!)","v":{"$error":"#REF!"}},{"$f":"SUM(#REF!)","v":{"$error":"#REF!"}},{"$f":"SUM(#REF!)","v":{"$error":"#REF!"}},{"$f":"SUM(#REF!)","v":{"$error":"#REF!"}},{"$f":"SUM(#REF!)","v":{"$error":"#REF!"}},{"$f":"SUM(#REF!)","v":{"$error":"#REF!"}},{"$f":"SUM(#REF!)","v":{"$error":"#REF!"}},{"$f":"SUM(#REF!)","v":{"$error":"#REF!"}},{"$f":"SUM(#REF!)","v":{"$error":"#REF!"}},{"$f":"SUM(#REF!)","v":{"$error":"#REF!"}},{"$f":"SUM(#REF!)","v":{"$error":"#REF!"}},{"$f":"SUM(#REF!)","v":{"$error":"#REF!"}},{"$f":"SUM(#REF!)","v":{"$error":"#REF!"}},{"$f":"SUM(#REF!)","v":{"$error":"#REF!"}},{"$f":"SUM(#REF!)","v":{"$error":"#REF!"}},{"$f":"SUM(#REF!)","v":{"$error":"#REF!"}},{"$f":"SUM(#REF!)","v":{"$error":"#REF!"}},{"$f":"SUM(#REF!)","v":{"$error":"#REF!"}},{"$f":"SUM(#REF!)","v":{"$error":"#REF!"}},{"$f":"SUM(#REF!)","v":{"$error":"#REF!"}},{"$f":"SUM(#REF!)","v":{"$error":"#REF!"}},{"$f":"SUM(#REF!)","v":{"$error":"#REF!"}},{"$f":"SUM(#REF!)","v":{"$error":"#REF!"}},{"$f":"SUM(#REF!)","v":{"$error":"#REF!"}},{"$f":"SUM(#REF!)","v":{"$error":"#REF!"}},{"$f":"SUM(#REF!)","v":{"$error":"#REF!"}},{"$f":"SUM(#REF!)","v":{"$error":"#REF!"}},{"$f":"SUM(#REF!)","v":{"$error":"#REF!"}},{"$f":"SUM(#REF!)","v":{"$error":"#REF!"}},{"$f":"SUM(#REF!)","v":{"$error":"#REF!"}},{"$f":"SUM(#REF!)","v":{"$error":"#REF!"}},{"$f":"SUM(#REF!)","v":{"$error":"#REF!"}},{"$f":"SUM(#REF!)","v":{"$error":"#REF!"}},{"$f":"SUM(#REF!)","v":{"$error":"#REF!"}},{"$f":"SUM(#REF!)","v":{"$error":"#REF!"}},{"$f":"SUM(#REF!)","v":{"$error":"#REF!"}},{"$f":"SUM(#REF!)","v":{"$error":"#REF!"}},{"$f":"SUM(#REF!)","v":{"$error":"#REF!"}},{"$f":"SUM(#REF!)","v":{"$error":"#REF!"}},{"$f":"SUM(#REF!)","v":{"$error":"#REF!"}},{"$f":"SUM(#REF!)","v":{"$error":"#REF!"}},{"$f":"SUM(#REF!)","v":{"$error":"#REF!"}},{"$f":"SUM(#REF!)","v":{"$error":"#REF!"}},{"$f":"SUM(#REF!)","v":{"$error":"#REF!"}},{"$f":"SUM(#REF!)","v":{"$error":"#REF!"}},{"$f":"SUM(#REF!)","v":{"$error":"#REF!"}},{"$f":"SUM(#REF!)","v":{"$error":"#REF!"}},{"$f":"SUM(#REF!)","v":{"$error":"#REF!"}},{"$f":"SUM(#REF!)","v":{"$error":"#REF!"}},{"$f":"SUM(#REF!)","v":{"$error":"#REF!"}},{"$f":"SUM(#REF!)","v":{"$error":"#REF!"}},{"$f":"SUM(#REF!)","v":{"$error":"#REF!"}},{"$f":"SUM(#REF!)","v":{"$error":"#REF!"}},{"$f":"SUM(#REF!)","v":{"$error":"#REF!"}},{"$f":"SUM(#REF!)","v":{"$error":"#REF!"}},{"$f":"SUM(#REF!)","v":{"$error":"#REF!"}},{"$f":"SUM(#REF!)","v":{"$error":"#REF!"}},{"$f":"SUM(#REF!)","v":{"$error":"#REF!"}},{"$f":"SUM(#REF!)","v":{"$error":"#REF!"}},{"$f":"SUM(#REF!)","v":{"$error":"#REF!"}},{"$f":"SUM(#REF!)","v":{"$error":"#REF!"}},{"$f":"SUM(#REF!)","v":{"$error":"#REF!"}},{"$f":"SUM(#REF!)","v":{"$error":"#REF!"}},{"$f":"SUM(#REF!)","v":{"$error":"#REF!"}},{"$f":"SUM(#REF!)","v":{"$error":"#REF!"}},{"$f":"SUM(#REF!)","v":{"$error":"#REF!"}},{"$f":"SUM(#REF!)","v":{"$error":"#REF!"}},{"$f":"SUM(#REF!)","v":{"$error":"#REF!"}},{"$f":"SUM(#REF!)","v":{"$error":"#REF!"}},{"$f":"SUM(#REF!)","v":{"$error":"#REF!"}},{"$f":"SUM(#REF!)","v":{"$error":"#REF!"}},{"$f":"SUM(#REF!)","v":{"$error":"#REF!"}},{"$f":"SUM(#REF!)","v":{"$error":"#REF!"}},{"$f":"SUM(#REF!)","v":{"$error":"#REF!"}},{"$f":"SUM(#REF!)","v":{"$error":"#REF!"}},{"$f":"SUM(#REF!)","v":{"$error":"#REF!"}},{"$f":"SUM(#REF!)","v":{"$error":"#REF!"}},{"$f":"SUM(#REF!)","v":{"$error":"#REF!"}},{"$f":"SUM(#REF!)","v":{"$error":"#REF!"}},{"$f":"SUM(#REF!)","v":{"$error":"#REF!"}},{"$f":"SUM(#REF!)","v":{"$error":"#REF!"}},{"$f":"SUM(#REF!)","v":{"$error":"#REF!"}},{"$f":"SUM(#REF!)","v":{"$error":"#REF!"}},{"$f":"SUM(#REF!)","v":{"$error":"#REF!"}},{"$f":"SUM(#REF!)","v":{"$error":"#REF!"}},{"$f":"SUM(#REF!)","v":{"$error":"#REF!"}},{"$f":"SUM(#REF!)","v":{"$error":"#REF!"}},{"$f":"SUM(#REF!)","v":{"$error":"#REF!"}},{"$f":"SUM(#REF!)","v":{"$error":"#REF!"}},{"$f":"SUM(#REF!)","v":{"$error":"#REF!"}},{"$f":"SUM(#REF!)","v":{"$error":"#REF!"}},{"$f":"SUM(#REF!)","v":{"$error":"#REF!"}},{"$f":"SUM(#REF!)","v":{"$error":"#REF!"}},{"$f":"SUM(#REF!)","v":{"$error":"#REF!"}},{"$f":"SUM(#REF!)","v":{"$error":"#REF!"}},{"$f":"SUM(#REF!)","v":{"$error":"#REF!"}},{"$f":"SUM(#REF!)","v":{"$error":"#REF!"}},{"$f":"SUM(#REF!)","v":{"$error":"#REF!"}},{"$f":"SUM(#REF!)","v":{"$error":"#REF!"}},{"$f":"SUM(#REF!)","v":{"$error":"#REF!"}},{"$f":"SUM(#REF!)","v":{"$error":"#REF!"}},{"$f":"SUM(#REF!)","v":{"$error":"#REF!"}},{"$f":"SUM(#REF!)","v":{"$error":"#REF!"}},{"$f":"SUM(#REF!)","v":{"$error":"#REF!"}},{"$f":"SUM(#REF!)","v":{"$error":"#REF!"}},{"$f":"SUM(#REF!)","v":{"$error":"#REF!"}},{"$f":"SUM(#REF!)","v":{"$error":"#REF!"}},{"$f":"SUM(#REF!)","v":{"$error":"#REF!"}},{"$f":"SUM(#REF!)","v":{"$error":"#REF!"}},{"$f":"SUM(#REF!)","v":{"$error":"#REF!"}},{"$f":"SUM(#REF!)","v":{"$error":"#REF!"}},{"$f":"SUM(#REF!)","v":{"$error":"#REF!"}},{"$f":"SUM(#REF!)","v":{"$error":"#REF!"}},{"$f":"SUM(#REF!)","v":{"$error":"#REF!"}},{"$f":"SUM(#REF!)","v":{"$error":"#REF!"}},{"$f":"SUM(#REF!)","v":{"$error":"#REF!"}},{"$f":"SUM(#REF!)","v":{"$error":"#REF!"}},{"$f":"SUM(#REF!)","v":{"$error":"#REF!"}},{"$f":"SUM(#REF!)","v":{"$error":"#REF!"}},{"$f":"SUM(#REF!)","v":{"$error":"#REF!"}},{"$f":"SUM(#REF!)","v":{"$error":"#REF!"}},{"$f":"SUM(#REF!)","v":{"$error":"#REF!"}},{"$f":"SUM(#REF!)","v":{"$error":"#REF!"}},{"$f":"SUM(#REF!)","v":{"$error":"#REF!"}},{"$f":"SUM(#REF!)","v":{"$error":"#REF!"}},{"$f":"SUM(#REF!)","v":{"$error":"#REF!"}},{"$f":"SUM(#REF!)","v":{"$error":"#REF!"}},{"$f":"SUM(#REF!)","v":{"$error":"#REF!"}},{"$f":"SUM(#REF!)","v":{"$error":"#REF!"}},{"$f":"SUM(#REF!)","v":{"$error":"#REF!"}},{"$f":"SUM(#REF!)","v":{"$error":"#REF!"}},{"$f":"SUM(#REF!)","v":{"$error":"#REF!"}},{"$f":"SUM(#REF!)","v":{"$error":"#REF!"}},{"$f":"SUM(#REF!)","v":{"$error":"#REF!"}},{"$f":"SUM(#REF!)","v":{"$error":"#REF!"}},{"$f":"SUM(#REF!)","v":{"$error":"#REF!"}},{"$f":"SUM(#REF!)","v":{"$error":"#REF!"}},{"$f":"SUM(#REF!)","v":{"$error":"#REF!"}},{"$f":"SUM(#REF!)","v":{"$error":"#REF!"}},{"$f":"SUM(#REF!)","v":{"$error":"#REF!"}},{"$f":"SUM(#REF!)","v":{"$error":"#REF!"}},{"$f":"SUM(#REF!)","v":{"$error":"#REF!"}},{"$f":"SUM(#REF!)","v":{"$error":"#REF!"}},{"$f":"SUM(#REF!)","v":{"$error":"#REF!"}},{"$f":"SUM(#REF!)","v":{"$error":"#REF!"}},{"$f":"SUM(#REF!)","v":{"$error":"#REF!"}},{"$f":"SUM(#REF!)","v":{"$error":"#REF!"}},{"$f":"SUM(#REF!)","v":{"$error":"#REF!"}},{"$f":"SUM(#REF!)","v":{"$error":"#REF!"}},{"$f":"SUM(#REF!)","v":{"$error":"#REF!"}},{"$f":"SUM(#REF!)","v":{"$error":"#REF!"}},{"$f":"SUM(#REF!)","v":{"$error":"#REF!"}},{"$f":"SUM(#REF!)","v":{"$error":"#REF!"}},{"$f":"SUM(#REF!)","v":{"$error":"#REF!"}},{"$f":"SUM(#REF!)","v":{"$error":"#REF!"}},{"$f":"SUM(#REF!)","v":{"$error":"#REF!"}},{"$f":"SUM(#REF!)","v":{"$error":"#REF!"}},{"$f":"SUM(#REF!)","v":{"$error":"#REF!"}},{"$f":"SUM(#REF!)","v":{"$error":"#REF!"}},{"$f":"SUM(#REF!)","v":{"$error":"#REF!"}},{"$f":"SUM(#REF!)","v":{"$error":"#REF!"}},{"$f":"SUM(#REF!)","v":{"$error":"#REF!"}},{"$f":"SUM(#REF!)","v":{"$error":"#REF!"}},{"$f":"SUM(#REF!)","v":{"$error":"#REF!"}},{"$f":"SUM(#REF!)","v":{"$error":"#REF!"}},{"$f":"SUM(#REF!)","v":{"$error":"#REF!"}},{"$f":"SUM(#REF!)","v":{"$error":"#REF!"}},{"$f":"SUM(#REF!)","v":{"$error":"#REF!"}},{"$f":"SUM(#REF!)","v":{"$error":"#REF!"}},{"$f":"SUM(#REF!)","v":{"$error":"#REF!"}},{"$f":"SUM(#REF!)","v":{"$error":"#REF!"}},{"$f":"SUM(#REF!)","v":{"$error":"#REF!"}},{"$f":"SUM(#REF!)","v":{"$error":"#REF!"}},{"$f":"SUM(#REF!)","v":{"$error":"#REF!"}},{"$f":"SUM(#REF!)","v":{"$error":"#REF!"}},{"$f":"SUM(#REF!)","v":{"$error":"#REF!"}},{"$f":"SUM(#REF!)","v":{"$error":"#REF!"}},{"$f":"SUM(#REF!)","v":{"$error":"#REF!"}},{"$f":"SUM(#REF!)","v":{"$error":"#REF!"}},{"$f":"SUM(#REF!)","v":{"$error":"#REF!"}},{"$f":"SUM(#REF!)","v":{"$error":"#REF!"}},{"$f":"SUM(#REF!)","v":{"$error":"#REF!"}},{"$f":"SUM(#REF!)","v":{"$error":"#REF!"}},{"$f":"SUM(#REF!)","v":{"$error":"#REF!"}},{"$f":"SUM(#REF!)","v":{"$error":"#REF!"}},{"$f":"SUM(#REF!)","v":{"$error":"#REF!"}},{"$f":"SUM(#REF!)","v":{"$error":"#REF!"}},{"$f":"SUM(#REF!)","v":{"$error":"#REF!"}},{"$f":"SUM(#REF!)","v":{"$error":"#REF!"}},{"$f":"SUM(#REF!)","v":{"$error":"#REF!"}},{"$f":"SUM(#REF!)","v":{"$error":"#REF!"}},{"$f":"SUM(#REF!)","v":{"$error":"#REF!"}},{"$f":"SUM(#REF!)","v":{"$error":"#REF!"}},{"$f":"SUM(#REF!)","v":{"$error":"#REF!"}},{"$f":"SUM(#REF!)","v":{"$error":"#REF!"}},{"$f":"SUM(#REF!)","v":{"$error":"#REF!"}},{"$f":"SUM(#REF!)","v":{"$error":"#REF!"}},{"$f":"SUM(#REF!)","v":{"$error":"#REF!"}},{"$f":"SUM(#REF!)","v":{"$error":"#REF!"}},{"$f":"SUM(#REF!)","v":{"$error":"#REF!"}},{"$f":"SUM(#REF!)","v":{"$error":"#REF!"}},{"$f":"SUM(#REF!)","v":{"$error":"#REF!"}},{"$f":"SUM(#REF!)","v":{"$error":"#REF!"}},{"$f":"SUM(#REF!)","v":{"$error":"#REF!"}},{"$f":"SUM(#REF!)","v":{"$error":"#REF!"}},{"$f":"SUM(#REF!)","v":{"$error":"#REF!"}},{"$f":"SUM(#REF!)","v":{"$error":"#REF!"}},{"$f":"SUM(#REF!)","v":{"$error":"#REF!"}},{"$f":"SUM(#REF!)","v":{"$error":"#REF!"}},{"$f":"SUM(#REF!)","v":{"$error":"#REF!"}},{"$f":"SUM(#REF!)","v":{"$error":"#REF!"}},{"$f":"SUM(#REF!)","v":{"$error":"#REF!"}},{"$f":"SUM(#REF!)","v":{"$error":"#REF!"}},{"$f":"SUM(#REF!)","v":{"$error":"#REF!"}},{"$f":"SUM(#REF!)","v":{"$error":"#REF!"}},{"$f":"SUM(#REF!)","v":{"$error":"#REF!"}},{"$f":"SUM(#REF!)","v":{"$error":"#REF!"}},{"$f":"SUM(#REF!)","v":{"$error":"#REF!"}},{"$f":"SUM(#REF!)","v":{"$error":"#REF!"}},{"$f":"SUM(#REF!)","v":{"$error":"#REF!"}},{"$f":"SUM(#REF!)","v":{"$error":"#REF!"}},{"$f":"SUM(#REF!)","v":{"$error":"#REF!"}},{"$f":"SUM(#REF!)","v":{"$error":"#REF!"}},{"$f":"SUM(#REF!)","v":{"$error":"#REF!"}},{"$f":"SUM(#REF!)","v":{"$error":"#REF!"}},{"$f":"SUM(#REF!)","v":{"$error":"#REF!"}},{"$f":"SUM(#REF!)","v":{"$error":"#REF!"}},{"$f":"SUM(#REF!)","v":{"$error":"#REF!"}},{"$f":"SUM(#REF!)","v":{"$error":"#REF!"}},{"$f":"SUM(#REF!)","v":{"$error":"#REF!"}},{"$f":"SUM(#REF!)","v":{"$error":"#REF!"}},{"$f":"SUM(#REF!)","v":{"$error":"#REF!"}},{"$f":"SUM(#REF!)","v":{"$error":"#REF!"}},{"$f":"SUM(#REF!)","v":{"$error":"#REF!"}},{"$f":"SUM(#REF!)","v":{"$error":"#REF!"}},{"$f":"SUM(#REF!)","v":{"$error":"#REF!"}},{"$f":"SUM(#REF!)","v":{"$error":"#REF!"}},{"$f":"SUM(#REF!)","v":{"$error":"#REF!"}},{"$f":"SUM(#REF!)","v":{"$error":"#REF!"}},{"$f":"SUM(#REF!)","v":{"$error":"#REF!"}},{"$f":"SUM(#REF!)","v":{"$error":"#REF!"}},{"$f":"SUM(#REF!)","v":{"$error":"#REF!"}},{"$f":"SUM(#REF!)","v":{"$error":"#REF!"}},{"$f":"SUM(#REF!)","v":{"$error":"#REF!"}},{"$f":"SUM(#REF!)","v":{"$error":"#REF!"}},{"$f":"SUM(#REF!)","v":{"$error":"#REF!"}},{"$f":"SUM(#REF!)","v":{"$error":"#REF!"}},{"$f":"SUM(#REF!)","v":{"$error":"#REF!"}},{"$f":"SUM(#REF!)","v":{"$error":"#REF!"}},{"$f":"SUM(#REF!)","v":{"$error":"#REF!"}},{"$f":"SUM(#REF!)","v":{"$error":"#REF!"}},{"$f":"SUM(#REF!)","v":{"$error":"#REF!"}},{"$f":"SUM(#REF!)","v":{"$error":"#REF!"}},{"$f":"SUM(#REF!)","v":{"$error":"#REF!"}},{"$f":"SUM(#REF!)","v":{"$error":"#REF!"}},{"$f":"SUM(#REF!)","v":{"$error":"#REF!"}},{"$f":"SUM(#REF!)","v":{"$error":"#REF!"}},{"$f":"SUM(#REF!)","v":{"$error":"#REF!"}},{"$f":"SUM(#REF!)","v":{"$error":"#REF!"}},{"$f":"SUM(#REF!)","v":{"$error":"#REF!"}},{"$f":"SUM(#REF!)","v":{"$error":"#REF!"}},{"$f":"SUM(#REF!)","v":{"$error":"#REF!"}},{"$f":"SUM(#REF!)","v":{"$error":"#REF!"}},{"$f":"SUM(#REF!)","v":{"$error":"#REF!"}},{"$f":"SUM(#REF!)","v":{"$error":"#REF!"}},{"$f":"SUM(#REF!)","v":{"$error":"#REF!"}},{"$f":"SUM(#REF!)","v":{"$error":"#REF!"}},{"$f":"SUM(#REF!)","v":{"$error":"#REF!"}},{"$f":"SUM(#REF!)","v":{"$error":"#REF!"}},{"$f":"SUM(#REF!)","v":{"$error":"#REF!"}},{"$f":"SUM(#REF!)","v":{"$error":"#REF!"}},{"$f":"SUM(#REF!)","v":{"$error":"#REF!"}},{"$f":"SUM(#REF!)","v":{"$error":"#REF!"}},{"$f":"SUM(#REF!)","v":{"$error":"#REF!"}},{"$f":"SUM(#REF!)","v":{"$error":"#REF!"}},{"$f":"SUM(#REF!)","v":{"$error":"#REF!"}},{"$f":"SUM(#REF!)","v":{"$error":"#REF!"}},{"$f":"SUM(#REF!)","v":{"$error":"#REF!"}},{"$f":"SUM(#REF!)","v":{"$error":"#REF!"}},{"$f":"SUM(#REF!)","v":{"$error":"#REF!"}},{"$f":"SUM(#REF!)","v":{"$error":"#REF!"}},{"$f":"SUM(#REF!)","v":{"$error":"#REF!"}},{"$f":"SUM(#REF!)","v":{"$error":"#REF!"}},{"$f":"SUM(#REF!)","v":{"$error":"#REF!"}},{"$f":"SUM(#REF!)","v":{"$error":"#REF!"}},{"$f":"SUM(#REF!)","v":{"$error":"#REF!"}},{"$f":"SUM(#REF!)","v":{"$error":"#REF!"}},{"$f":"SUM(#REF!)","v":{"$error":"#REF!"}},{"$f":"SUM(#REF!)","v":{"$error":"#REF!"}},{"$f":"SUM(#REF!)","v":{"$error":"#REF!"}},{"$f":"SUM(#REF!)","v":{"$error":"#REF!"}},{"$f":"SUM(#REF!)","v":{"$error":"#REF!"}},{"$f":"SUM(#REF!)","v":{"$error":"#REF!"}},{"$f":"SUM(#REF!)","v":{"$error":"#REF!"}},{"$f":"SUM(#REF!)","v":{"$error":"#REF!"}},{"$f":"SUM(#REF!)","v":{"$error":"#REF!"}},{"$f":"SUM(#REF!)","v":{"$error":"#REF!"}},{"$f":"SUM(#REF!)","v":{"$error":"#REF!"}},{"$f":"SUM(#REF!)","v":{"$error":"#REF!"}},{"$f":"SUM(#REF!)","v":{"$error":"#REF!"}},{"$f":"SUM(#REF!)","v":{"$error":"#REF!"}},{"$f":"SUM(#REF!)","v":{"$error":"#REF!"}},{"$f":"SUM(#REF!)","v":{"$error":"#REF!"}},{"$f":"SUM(#REF!)","v":{"$error":"#REF!"}},{"$f":"SUM(#REF!)","v":{"$error":"#REF!"}},{"$f":"SUM(#REF!)","v":{"$error":"#REF!"}},{"$f":"SUM(#REF!)","v":{"$error":"#REF!"}},{"$f":"SUM(#REF!)","v":{"$error":"#REF!"}},{"$f":"SUM(#REF!)","v":{"$error":"#REF!"}},{"$f":"SUM(#REF!)","v":{"$error":"#REF!"}},{"$f":"SUM(#REF!)","v":{"$error":"#REF!"}},{"$f":"SUM(#REF!)","v":{"$error":"#REF!"}},{"$f":"SUM(#REF!)","v":{"$error":"#REF!"}},{"$f":"SUM(#REF!)","v":{"$error":"#REF!"}},{"$f":"SUM(#REF!)","v":{"$error":"#REF!"}},{"$f":"SUM(#REF!)","v":{"$error":"#REF!"}},{"$f":"SUM(#REF!)","v":{"$error":"#REF!"}},{"$f":"SUM(#REF!)","v":{"$error":"#REF!"}},{"$f":"SUM(#REF!)","v":{"$error":"#REF!"}},{"$f":"SUM(#REF!)","v":{"$error":"#REF!"}},{"$f":"SUM(#REF!)","v":{"$error":"#REF!"}},{"$f":"SUM(#REF!)","v":{"$error":"#REF!"}},{"$f":"SUM(#REF!)","v":{"$error":"#REF!"}},{"$f":"SUM(#REF!)","v":{"$error":"#REF!"}},{"$f":"SUM(#REF!)","v":{"$error":"#REF!"}},{"$f":"SUM(#REF!)","v":{"$error":"#REF!"}},{"$f":"SUM(#REF!)","v":{"$error":"#REF!"}},{"$f":"SUM(#REF!)","v":{"$error":"#REF!"}},{"$f":"SUM(#REF!)","v":{"$error":"#REF!"}},{"$f":"SUM(#REF!)","v":{"$error":"#REF!"}},{"$f":"SUM(#REF!)","v":{"$error":"#REF!"}},{"$f":"SUM(#REF!)","v":{"$error":"#REF!"}},{"$f":"SUM(#REF!)","v":{"$error":"#REF!"}},{"$f":"SUM(#REF!)","v":{"$error":"#REF!"}},{"$f":"SUM(#REF!)","v":{"$error":"#REF!"}},{"$f":"SUM(#REF!)","v":{"$error":"#REF!"}},{"$f":"SUM(#REF!)","v":{"$error":"#REF!"}},{"$f":"SUM(#REF!)","v":{"$error":"#REF!"}},{"$f":"SUM(#REF!)","v":{"$error":"#REF!"}},{"$f":"SUM(#REF!)","v":{"$error":"#REF!"}},{"$f":"SUM(#REF!)","v":{"$error":"#REF!"}},{"$f":"SUM(#REF!)","v":{"$error":"#REF!"}},{"$f":"SUM(#REF!)","v":{"$error":"#REF!"}},{"$f":"SUM(#REF!)","v":{"$error":"#REF!"}},{"$f":"SUM(#REF!)","v":{"$error":"#REF!"}},{"$f":"SUM(#REF!)","v":{"$error":"#REF!"}},{"$f":"SUM(#REF!)","v":{"$error":"#REF!"}},{"$f":"SUM(#REF!)","v":{"$error":"#REF!"}},{"$f":"SUM(#REF!)","v":{"$error":"#REF!"}},{"$f":"SUM(#REF!)","v":{"$error":"#REF!"}},{"$f":"SUM(#REF!)","v":{"$error":"#REF!"}},{"$f":"SUM(#REF!)","v":{"$error":"#REF!"}},{"$f":"SUM(#REF!)","v":{"$error":"#REF!"}},{"$f":"SUM(#REF!)","v":{"$error":"#REF!"}},{"$f":"SUM(#REF!)","v":{"$error":"#REF!"}},{"$f":"SUM(#REF!)","v":{"$error":"#REF!"}},{"$f":"SUM(#REF!)","v":{"$error":"#REF!"}},{"$f":"SUM(#REF!)","v":{"$error":"#REF!"}},{"$f":"SUM(#REF!)","v":{"$error":"#REF!"}},{"$f":"SUM(#REF!)","v":{"$error":"#REF!"}},{"$f":"SUM(#REF!)","v":{"$error":"#REF!"}},{"$f":"SUM(#REF!)","v":{"$error":"#REF!"}},{"$f":"SUM(#REF!)","v":{"$error":"#REF!"}},{"$f":"SUM(#REF!)","v":{"$error":"#REF!"}},{"$f":"SUM(#REF!)","v":{"$error":"#REF!"}},{"$f":"SUM(#REF!)","v":{"$error":"#REF!"}},{"$f":"SUM(#REF!)","v":{"$error":"#REF!"}},{"$f":"SUM(#REF!)","v":{"$error":"#REF!"}},{"$f":"SUM(#REF!)","v":{"$error":"#REF!"}},{"$f":"SUM(#REF!)","v":{"$error":"#REF!"}},{"$f":"SUM(#REF!)","v":{"$error":"#REF!"}},{"$f":"SUM(#REF!)","v":{"$error":"#REF!"}},{"$f":"SUM(#REF!)","v":{"$error":"#REF!"}},{"$f":"SUM(#REF!)","v":{"$error":"#REF!"}},{"$f":"SUM(#REF!)","v":{"$error":"#REF!"}},{"$f":"SUM(#REF!)","v":{"$error":"#REF!"}},{"$f":"SUM(#REF!)","v":{"$error":"#REF!"}},{"$f":"SUM(#REF!)","v":{"$error":"#REF!"}},{"$f":"SUM(#REF!)","v":{"$error":"#REF!"}},{"$f":"SUM(#REF!)","v":{"$error":"#REF!"}},{"$f":"SUM(#REF!)","v":{"$error":"#REF!"}},{"$f":"SUM(#REF!)","v":{"$error":"#REF!"}},{"$f":"SUM(#REF!)","v":{"$error":"#REF!"}},{"$f":"SUM(#REF!)","v":{"$error":"#REF!"}},{"$f":"SUM(#REF!)","v":{"$error":"#REF!"}},{"$f":"SUM(#REF!)","v":{"$error":"#REF!"}},{"$f":"SUM(#REF!)","v":{"$error":"#REF!"}},{"$f":"SUM(#REF!)","v":{"$error":"#REF!"}},{"$f":"SUM(#REF!)","v":{"$error":"#REF!"}},{"$f":"SUM(#REF!)","v":{"$error":"#REF!"}},{"$f":"SUM(#REF!)","v":{"$error":"#REF!"}},{"$f":"SUM(#REF!)","v":{"$error":"#REF!"}},{"$f":"SUM(#REF!)","v":{"$error":"#REF!"}},{"$f":"SUM(#REF!)","v":{"$error":"#REF!"}},{"$f":"SUM(#REF!)","v":{"$error":"#REF!"}},{"$f":"SUM(#REF!)","v":{"$error":"#REF!"}},{"$f":"SUM(#REF!)","v":{"$error":"#REF!"}},{"$f":"SUM(#REF!)","v":{"$error":"#REF!"}},{"$f":"SUM(#REF!)","v":{"$error":"#REF!"}},{"$f":"SUM(#REF!)","v":{"$error":"#REF!"}},{"$f":"SUM(#REF!)","v":{"$error":"#REF!"}},{"$f":"SUM(#REF!)","v":{"$error":"#REF!"}},{"$f":"SUM(#REF!)","v":{"$error":"#REF!"}},{"$f":"SUM(#REF!)","v":{"$error":"#REF!"}},{"$f":"SUM(#REF!)","v":{"$error":"#REF!"}},{"$f":"SUM(#REF!)","v":{"$error":"#REF!"}},{"$f":"SUM(#REF!)","v":{"$error":"#REF!"}},{"$f":"SUM(#REF!)","v":{"$error":"#REF!"}},{"$f":"SUM(#REF!)","v":{"$error":"#REF!"}},{"$f":"SUM(#REF!)","v":{"$error":"#REF!"}},{"$f":"SUM(#REF!)","v":{"$error":"#REF!"}},{"$f":"SUM(#REF!)","v":{"$error":"#REF!"}},{"$f":"SUM(#REF!)","v":{"$error":"#REF!"}},{"$f":"SUM(#REF!)","v":{"$error":"#REF!"}},{"$f":"SUM(#REF!)","v":{"$error":"#REF!"}},{"$f":"SUM(#REF!)","v":{"$error":"#REF!"}},{"$f":"SUM(#REF!)","v":{"$error":"#REF!"}},{"$f":"SUM(#REF!)","v":{"$error":"#REF!"}},{"$f":"SUM(#REF!)","v":{"$error":"#REF!"}},{"$f":"SUM(#REF!)","v":{"$error":"#REF!"}},{"$f":"SUM(#REF!)","v":{"$error":"#REF!"}},{"$f":"SUM(#REF!)","v":{"$error":"#REF!"}},{"$f":"SUM(#REF!)","v":{"$error":"#REF!"}},{"$f":"SUM(#REF!)","v":{"$error":"#REF!"}},{"$f":"SUM(#REF!)","v":{"$error":"#REF!"}},{"$f":"SUM(#REF!)","v":{"$error":"#REF!"}},{"$f":"SUM(#REF!)","v":{"$error":"#REF!"}},{"$f":"SUM(#REF!)","v":{"$error":"#REF!"}},{"$f":"SUM(#REF!)","v":{"$error":"#REF!"}},{"$f":"SUM(#REF!)","v":{"$error":"#REF!"}},{"$f":"SUM(#REF!)","v":{"$error":"#REF!"}},{"$f":"SUM(#REF!)","v":{"$error":"#REF!"}},{"$f":"SUM(#REF!)","v":{"$error":"#REF!"}},{"$f":"SUM(#REF!)","v":{"$error":"#REF!"}},{"$f":"SUM(#REF!)","v":{"$error":"#REF!"}},{"$f":"SUM(#REF!)","v":{"$error":"#REF!"}},{"$f":"SUM(#REF!)","v":{"$error":"#REF!"}},{"$f":"SUM(#REF!)","v":{"$error":"#REF!"}},{"$f":"SUM(#REF!)","v":{"$error":"#REF!"}},{"$f":"SUM(#REF!)","v":{"$error":"#REF!"}},{"$f":"SUM(#REF!)","v":{"$error":"#REF!"}},{"$f":"SUM(#REF!)","v":{"$error":"#REF!"}},{"$f":"SUM(#REF!)","v":{"$error":"#REF!"}},{"$f":"SUM(#REF!)","v":{"$error":"#REF!"}},{"$f":"SUM(#REF!)","v":{"$error":"#REF!"}},{"$f":"SUM(#REF!)","v":{"$error":"#REF!"}},{"$f":"SUM(#REF!)","v":{"$error":"#REF!"}},{"$f":"SUM(#REF!)","v":{"$error":"#REF!"}},{"$f":"SUM(#REF!)","v":{"$error":"#REF!"}},{"$f":"SUM(#REF!)","v":{"$error":"#REF!"}},{"$f":"SUM(#REF!)","v":{"$error":"#REF!"}},{"$f":"SUM(#REF!)","v":{"$error":"#REF!"}},{"$f":"SUM(#REF!)","v":{"$error":"#REF!"}},{"$f":"SUM(#REF!)","v":{"$error":"#REF!"}},{"$f":"SUM(#REF!)","v":{"$error":"#REF!"}},{"$f":"SUM(#REF!)","v":{"$error":"#REF!"}},{"$f":"SUM(#REF!)","v":{"$error":"#REF!"}},{"$f":"SUM(#REF!)","v":{"$error":"#REF!"}},{"$f":"SUM(#REF!)","v":{"$error":"#REF!"}},{"$f":"SUM(#REF!)","v":{"$error":"#REF!"}},{"$f":"SUM(#REF!)","v":{"$error":"#REF!"}},{"$f":"SUM(#REF!)","v":{"$error":"#REF!"}},{"$f":"SUM(#REF!)","v":{"$error":"#REF!"}},{"$f":"SUM(#REF!)","v":{"$error":"#REF!"}},{"$f":"SUM(#REF!)","v":{"$error":"#REF!"}},{"$f":"SUM(#REF!)","v":{"$error":"#REF!"}},{"$f":"SUM(#REF!)","v":{"$error":"#REF!"}},{"$f":"SUM(#REF!)","v":{"$error":"#REF!"}},{"$f":"SUM(#REF!)","v":{"$error":"#REF!"}},{"$f":"SUM(#REF!)","v":{"$error":"#REF!"}},{"$f":"SUM(#REF!)","v":{"$error":"#REF!"}},{"$f":"SUM(#REF!)","v":{"$error":"#REF!"}},{"$f":"SUM(#REF!)","v":{"$error":"#REF!"}},{"$f":"SUM(#REF!)","v":{"$error":"#REF!"}},{"$f":"SUM(#REF!)","v":{"$error":"#REF!"}},{"$f":"SUM(#REF!)","v":{"$error":"#REF!"}},{"$f":"SUM(#REF!)","v":{"$error":"#REF!"}},{"$f":"SUM(#REF!)","v":{"$error":"#REF!"}},{"$f":"SUM(#REF!)","v":{"$error":"#REF!"}},{"$f":"SUM(#REF!)","v":{"$error":"#REF!"}},{"$f":"SUM(#REF!)","v":{"$error":"#REF!"}},{"$f":"SUM(#REF!)","v":{"$error":"#REF!"}},{"$f":"SUM(#REF!)","v":{"$error":"#REF!"}},{"$f":"SUM(#REF!)","v":{"$error":"#REF!"}},{"$f":"SUM(#REF!)","v":{"$error":"#REF!"}},{"$f":"SUM(#REF!)","v":{"$error":"#REF!"}},{"$f":"SUM(#REF!)","v":{"$error":"#REF!"}},{"$f":"SUM(#REF!)","v":{"$error":"#REF!"}},{"$f":"SUM(#REF!)","v":{"$error":"#REF!"}},{"$f":"SUM(#REF!)","v":{"$error":"#REF!"}},{"$f":"SUM(#REF!)","v":{"$error":"#REF!"}},{"$f":"SUM(#REF!)","v":{"$error":"#REF!"}},{"$f":"SUM(#REF!)","v":{"$error":"#REF!"}},{"$f":"SUM(#REF!)","v":{"$error":"#REF!"}},{"$f":"SUM(#REF!)","v":{"$error":"#REF!"}},{"$f":"SUM(#REF!)","v":{"$error":"#REF!"}},{"$f":"SUM(#REF!)","v":{"$error":"#REF!"}},{"$f":"SUM(#REF!)","v":{"$error":"#REF!"}},{"$f":"SUM(#REF!)","v":{"$error":"#REF!"}},{"$f":"SUM(#REF!)","v":{"$error":"#REF!"}},{"$f":"SUM(#REF!)","v":{"$error":"#REF!"}},{"$f":"SUM(#REF!)","v":{"$error":"#REF!"}},{"$f":"SUM(#REF!)","v":{"$error":"#REF!"}},{"$f":"SUM(#REF!)","v":{"$error":"#REF!"}},{"$f":"SUM(#REF!)","v":{"$error":"#REF!"}},{"$f":"SUM(#REF!)","v":{"$error":"#REF!"}},{"$f":"SUM(#REF!)","v":{"$error":"#REF!"}},{"$f":"SUM(#REF!)","v":{"$error":"#REF!"}},{"$f":"SUM(#REF!)","v":{"$error":"#REF!"}},{"$f":"SUM(#REF!)","v":{"$error":"#REF!"}},{"$f":"SUM(#REF!)","v":{"$error":"#REF!"}},{"$f":"SUM(#REF!)","v":{"$error":"#REF!"}},{"$f":"SUM(#REF!)","v":{"$error":"#REF!"}},{"$f":"SUM(#REF!)","v":{"$error":"#REF!"}},{"$f":"SUM(#REF!)","v":{"$error":"#REF!"}},{"$f":"SUM(#REF!)","v":{"$error":"#REF!"}},{"$f":"SUM(#REF!)","v":{"$error":"#REF!"}},{"$f":"SUM(#REF!)","v":{"$error":"#REF!"}},{"$f":"SUM(#REF!)","v":{"$error":"#REF!"}},{"$f":"SUM(#REF!)","v":{"$error":"#REF!"}},{"$f":"SUM(#REF!)","v":{"$error":"#REF!"}},{"$f":"SUM(#REF!)","v":{"$error":"#REF!"}},{"$f":"SUM(#REF!)","v":{"$error":"#REF!"}},{"$f":"SUM(#REF!)","v":{"$error":"#REF!"}},{"$f":"SUM(#REF!)","v":{"$error":"#REF!"}},{"$f":"SUM(#REF!)","v":{"$error":"#REF!"}},{"$f":"SUM(#REF!)","v":{"$error":"#REF!"}},{"$f":"SUM(#REF!)","v":{"$error":"#REF!"}},{"$f":"SUM(#REF!)","v":{"$error":"#REF!"}},{"$f":"SUM(#REF!)","v":{"$error":"#REF!"}},{"$f":"SUM(#REF!)","v":{"$error":"#REF!"}},{"$f":"SUM(#REF!)","v":{"$error":"#REF!"}},{"$f":"SUM(#REF!)","v":{"$error":"#REF!"}},{"$f":"SUM(#REF!)","v":{"$error":"#REF!"}},{"$f":"SUM(#REF!)","v":{"$error":"#REF!"}},{"$f":"SUM(#REF!)","v":{"$error":"#REF!"}},{"$f":"SUM(#REF!)","v":{"$error":"#REF!"}},{"$f":"SUM(#REF!)","v":{"$error":"#REF!"}},{"$f":"SUM(#REF!)","v":{"$error":"#REF!"}},{"$f":"SUM(#REF!)","v":{"$error":"#REF!"}},{"$f":"SUM(#REF!)","v":{"$error":"#REF!"}},{"$f":"SUM(#REF!)","v":{"$error":"#REF!"}},{"$f":"SUM(#REF!)","v":{"$error":"#REF!"}},{"$f":"SUM(#REF!)","v":{"$error":"#REF!"}},{"$f":"SUM(#REF!)","v":{"$error":"#REF!"}},{"$f":"SUM(#REF!)","v":{"$error":"#REF!"}},{"$f":"SUM(#REF!)","v":{"$error":"#REF!"}},{"$f":"SUM(#REF!)","v":{"$error":"#REF!"}},{"$f":"SUM(#REF!)","v":{"$error":"#REF!"}},{"$f":"SUM(#REF!)","v":{"$error":"#REF!"}},{"$f":"SUM(#REF!)","v":{"$error":"#REF!"}},{"$f":"SUM(#REF!)","v":{"$error":"#REF!"}},{"$f":"SUM(#REF!)","v":{"$error":"#REF!"}},{"$f":"SUM(#REF!)","v":{"$error":"#REF!"}},{"$f":"SUM(#REF!)","v":{"$error":"#REF!"}},{"$f":"SUM(#REF!)","v":{"$error":"#REF!"}},{"$f":"SUM(#REF!)","v":{"$error":"#REF!"}},{"$f":"SUM(#REF!)","v":{"$error":"#REF!"}},{"$f":"SUM(#REF!)","v":{"$error":"#REF!"}},{"$f":"SUM(#REF!)","v":{"$error":"#REF!"}},{"$f":"SUM(#REF!)","v":{"$error":"#REF!"}},{"$f":"SUM(#REF!)","v":{"$error":"#REF!"}},{"$f":"SUM(#REF!)","v":{"$error":"#REF!"}},{"$f":"SUM(#REF!)","v":{"$error":"#REF!"}},{"$f":"SUM(#REF!)","v":{"$error":"#REF!"}},{"$f":"SUM(#REF!)","v":{"$error":"#REF!"}},{"$f":"SUM(#REF!)","v":{"$error":"#REF!"}},{"$f":"SUM(#REF!)","v":{"$error":"#REF!"}},{"$f":"SUM(#REF!)","v":{"$error":"#REF!"}},{"$f":"SUM(#REF!)","v":{"$error":"#REF!"}},{"$f":"SUM(#REF!)","v":{"$error":"#REF!"}},{"$f":"SUM(#REF!)","v":{"$error":"#REF!"}},{"$f":"SUM(#REF!)","v":{"$error":"#REF!"}},{"$f":"SUM(#REF!)","v":{"$error":"#REF!"}},{"$f":"SUM(#REF!)","v":{"$error":"#REF!"}},{"$f":"SUM(#REF!)","v":{"$error":"#REF!"}},{"$f":"SUM(#REF!)","v":{"$error":"#REF!"}},{"$f":"SUM(#REF!)","v":{"$error":"#REF!"}},{"$f":"SUM(#REF!)","v":{"$error":"#REF!"}},{"$f":"SUM(#REF!)","v":{"$error":"#REF!"}},{"$f":"SUM(#REF!)","v":{"$error":"#REF!"}},{"$f":"SUM(#REF!)","v":{"$error":"#REF!"}},{"$f":"SUM(#REF!)","v":{"$error":"#REF!"}},{"$f":"SUM(#REF!)","v":{"$error":"#REF!"}},{"$f":"SUM(#REF!)","v":{"$error":"#REF!"}},{"$f":"SUM(#REF!)","v":{"$error":"#REF!"}},{"$f":"SUM(#REF!)","v":{"$error":"#REF!"}},{"$f":"SUM(#REF!)","v":{"$error":"#REF!"}},{"$f":"SUM(#REF!)","v":{"$error":"#REF!"}},{"$f":"SUM(#REF!)","v":{"$error":"#REF!"}},{"$f":"SUM(#REF!)","v":{"$error":"#REF!"}},{"$f":"SUM(#REF!)","v":{"$error":"#REF!"}},{"$f":"SUM(#REF!)","v":{"$error":"#REF!"}},{"$f":"SUM(#REF!)","v":{"$error":"#REF!"}},{"$f":"SUM(#REF!)","v":{"$error":"#REF!"}},{"$f":"SUM(#REF!)","v":{"$error":"#REF!"}},{"$f":"SUM(#REF!)","v":{"$error":"#REF!"}},{"$f":"SUM(#REF!)","v":{"$error":"#REF!"}},{"$f":"SUM(#REF!)","v":{"$error":"#REF!"}},{"$f":"SUM(#REF!)","v":{"$error":"#REF!"}},{"$f":"SUM(#REF!)","v":{"$error":"#REF!"}},{"$f":"SUM(#REF!)","v":{"$error":"#REF!"}},{"$f":"SUM(#REF!)","v":{"$error":"#REF!"}},{"$f":"SUM(#REF!)","v":{"$error":"#REF!"}},{"$f":"SUM(#REF!)","v":{"$error":"#REF!"}},{"$f":"SUM(#REF!)","v":{"$error":"#REF!"}},{"$f":"SUM(#REF!)","v":{"$error":"#REF!"}},{"$f":"SUM(#REF!)","v":{"$error":"#REF!"}},{"$f":"SUM(#REF!)","v":{"$error":"#REF!"}},{"$f":"SUM(#REF!)","v":{"$error":"#REF!"}},{"$f":"SUM(#REF!)","v":{"$error":"#REF!"}},{"$f":"SUM(#REF!)","v":{"$error":"#REF!"}},{"$f":"SUM(#REF!)","v":{"$error":"#REF!"}},{"$f":"SUM(#REF!)","v":{"$error":"#REF!"}},{"$f":"SUM(#REF!)","v":{"$error":"#REF!"}},{"$f":"SUM(#REF!)","v":{"$error":"#REF!"}},{"$f":"SUM(#REF!)","v":{"$error":"#REF!"}},{"$f":"SUM(#REF!)","v":{"$error":"#REF!"}},{"$f":"SUM(#REF!)","v":{"$error":"#REF!"}},{"$f":"SUM(#REF!)","v":{"$error":"#REF!"}},{"$f":"SUM(#REF!)","v":{"$error":"#REF!"}},{"$f":"SUM(#REF!)","v":{"$error":"#REF!"}},{"$f":"SUM(#REF!)","v":{"$error":"#REF!"}},{"$f":"SUM(#REF!)","v":{"$error":"#REF!"}},{"$f":"SUM(#REF!)","v":{"$error":"#REF!"}},{"$f":"SUM(#REF!)","v":{"$error":"#REF!"}},{"$f":"SUM(#REF!)","v":{"$error":"#REF!"}},{"$f":"SUM(#REF!)","v":{"$error":"#REF!"}},{"$f":"SUM(#REF!)","v":{"$error":"#REF!"}},{"$f":"SUM(#REF!)","v":{"$error":"#REF!"}},{"$f":"SUM(#REF!)","v":{"$error":"#REF!"}},{"$f":"SUM(#REF!)","v":{"$error":"#REF!"}},{"$f":"SUM(#REF!)","v":{"$error":"#REF!"}},{"$f":"SUM(#REF!)","v":{"$error":"#REF!"}},{"$f":"SUM(#REF!)","v":{"$error":"#REF!"}},{"$f":"SUM(#REF!)","v":{"$error":"#REF!"}},{"$f":"SUM(#REF!)","v":{"$error":"#REF!"}},{"$f":"SUM(#REF!)","v":{"$error":"#REF!"}},{"$f":"SUM(#REF!)","v":{"$error":"#REF!"}},{"$f":"SUM(#REF!)","v":{"$error":"#REF!"}},{"$f":"SUM(#REF!)","v":{"$error":"#REF!"}},{"$f":"SUM(#REF!)","v":{"$error":"#REF!"}},{"$f":"SUM(#REF!)","v":{"$error":"#REF!"}},{"$f":"SUM(#REF!)","v":{"$error":"#REF!"}},{"$f":"SUM(#REF!)","v":{"$error":"#REF!"}},{"$f":"SUM(#REF!)","v":{"$error":"#REF!"}},{"$f":"SUM(#REF!)","v":{"$error":"#REF!"}},{"$f":"SUM(#REF!)","v":{"$error":"#REF!"}},{"$f":"SUM(#REF!)","v":{"$error":"#REF!"}},{"$f":"SUM(#REF!)","v":{"$error":"#REF!"}},{"$f":"SUM(#REF!)","v":{"$error":"#REF!"}},{"$f":"SUM(#REF!)","v":{"$error":"#REF!"}},{"$f":"SUM(#REF!)","v":{"$error":"#REF!"}},{"$f":"SUM(#REF!)","v":{"$error":"#REF!"}},{"$f":"SUM(#REF!)","v":{"$error":"#REF!"}},{"$f":"SUM(#REF!)","v":{"$error":"#REF!"}},{"$f":"SUM(#REF!)","v":{"$error":"#REF!"}},{"$f":"SUM(#REF!)","v":{"$error":"#REF!"}},{"$f":"SUM(#REF!)","v":{"$error":"#REF!"}},{"$f":"SUM(#REF!)","v":{"$error":"#REF!"}},{"$f":"SUM(#REF!)","v":{"$error":"#REF!"}},{"$f":"SUM(#REF!)","v":{"$error":"#REF!"}},{"$f":"SUM(#REF!)","v":{"$error":"#REF!"}},{"$f":"SUM(#REF!)","v":{"$error":"#REF!"}},{"$f":"SUM(#REF!)","v":{"$error":"#REF!"}},{"$f":"SUM(#REF!)","v":{"$error":"#REF!"}},{"$f":"SUM(#REF!)","v":{"$error":"#REF!"}},{"$f":"SUM(#REF!)","v":{"$error":"#REF!"}},{"$f":"SUM(#REF!)","v":{"$error":"#REF!"}},{"$f":"SUM(#REF!)","v":{"$error":"#REF!"}},{"$f":"SUM(#REF!)","v":{"$error":"#REF!"}},{"$f":"SUM(#REF!)","v":{"$error":"#REF!"}},{"$f":"SUM(#REF!)","v":{"$error":"#REF!"}},{"$f":"SUM(#REF!)","v":{"$error":"#REF!"}},{"$f":"SUM(#REF!)","v":{"$error":"#REF!"}},{"$f":"SUM(#REF!)","v":{"$error":"#REF!"}},{"$f":"SUM(#REF!)","v":{"$error":"#REF!"}},{"$f":"SUM(#REF!)","v":{"$error":"#REF!"}},{"$f":"SUM(#REF!)","v":{"$error":"#REF!"}},{"$f":"SUM(#REF!)","v":{"$error":"#REF!"}},{"$f":"SUM(#REF!)","v":{"$error":"#REF!"}},{"$f":"SUM(#REF!)","v":{"$error":"#REF!"}},{"$f":"SUM(#REF!)","v":{"$error":"#REF!"}},{"$f":"SUM(#REF!)","v":{"$error":"#REF!"}},{"$f":"SUM(#REF!)","v":{"$error":"#REF!"}},{"$f":"SUM(#REF!)","v":{"$error":"#REF!"}},{"$f":"SUM(#REF!)","v":{"$error":"#REF!"}},{"$f":"SUM(#REF!)","v":{"$error":"#REF!"}},{"$f":"SUM(#REF!)","v":{"$error":"#REF!"}},{"$f":"SUM(#REF!)","v":{"$error":"#REF!"}},{"$f":"SUM(#REF!)","v":{"$error":"#REF!"}},{"$f":"SUM(#REF!)","v":{"$error":"#REF!"}},{"$f":"SUM(#REF!)","v":{"$error":"#REF!"}},{"$f":"SUM(#REF!)","v":{"$error":"#REF!"}},{"$f":"SUM(#REF!)","v":{"$error":"#REF!"}},{"$f":"SUM(#REF!)","v":{"$error":"#REF!"}},{"$f":"SUM(#REF!)","v":{"$error":"#REF!"}},{"$f":"SUM(#REF!)","v":{"$error":"#REF!"}},{"$f":"SUM(#REF!)","v":{"$error":"#REF!"}},{"$f":"SUM(#REF!)","v":{"$error":"#REF!"}},{"$f":"SUM(#REF!)","v":{"$error":"#REF!"}},{"$f":"SUM(#REF!)","v":{"$error":"#REF!"}},{"$f":"SUM(#REF!)","v":{"$error":"#REF!"}},{"$f":"SUM(#REF!)","v":{"$error":"#REF!"}},{"$f":"SUM(#REF!)","v":{"$error":"#REF!"}},{"$f":"SUM(#REF!)","v":{"$error":"#REF!"}},{"$f":"SUM(#REF!)","v":{"$error":"#REF!"}},{"$f":"SUM(#REF!)","v":{"$error":"#REF!"}},{"$f":"SUM(#REF!)","v":{"$error":"#REF!"}},{"$f":"SUM(#REF!)","v":{"$error":"#REF!"}},{"$f":"SUM(#REF!)","v":{"$error":"#REF!"}},{"$f":"SUM(#REF!)","v":{"$error":"#REF!"}},{"$f":"SUM(#REF!)","v":{"$error":"#REF!"}},{"$f":"SUM(#REF!)","v":{"$error":"#REF!"}},{"$f":"SUM(#REF!)","v":{"$error":"#REF!"}},{"$f":"SUM(#REF!)","v":{"$error":"#REF!"}},{"$f":"SUM(#REF!)","v":{"$error":"#REF!"}},{"$f":"SUM(#REF!)","v":{"$error":"#REF!"}},{"$f":"SUM(#REF!)","v":{"$error":"#REF!"}},{"$f":"SUM(#REF!)","v":{"$error":"#REF!"}},{"$f":"SUM(#REF!)","v":{"$error":"#REF!"}},{"$f":"SUM(#REF!)","v":{"$error":"#REF!"}},{"$f":"SUM(#REF!)","v":{"$error":"#REF!"}},{"$f":"SUM(#REF!)","v":{"$error":"#REF!"}},{"$f":"SUM(#REF!)","v":{"$error":"#REF!"}},{"$f":"SUM(#REF!)","v":{"$error":"#REF!"}},{"$f":"SUM(#REF!)","v":{"$error":"#REF!"}},{"$f":"SUM(#REF!)","v":{"$error":"#REF!"}},{"$f":"SUM(#REF!)","v":{"$error":"#REF!"}},{"$f":"SUM(#REF!)","v":{"$error":"#REF!"}},{"$f":"SUM(#REF!)","v":{"$error":"#REF!"}},{"$f":"SUM(#REF!)","v":{"$error":"#REF!"}},{"$f":"SUM(#REF!)","v":{"$error":"#REF!"}},{"$f":"SUM(#REF!)","v":{"$error":"#REF!"}},{"$f":"SUM(#REF!)","v":{"$error":"#REF!"}},{"$f":"SUM(#REF!)","v":{"$error":"#REF!"}},{"$f":"SUM(#REF!)","v":{"$error":"#REF!"}},{"$f":"SUM(#REF!)","v":{"$error":"#REF!"}},{"$f":"SUM(#REF!)","v":{"$error":"#REF!"}},{"$f":"SUM(#REF!)","v":{"$error":"#REF!"}},{"$f":"SUM(#REF!)","v":{"$error":"#REF!"}},{"$f":"SUM(#REF!)","v":{"$error":"#REF!"}},{"$f":"SUM(#REF!)","v":{"$error":"#REF!"}},{"$f":"SUM(#REF!)","v":{"$error":"#REF!"}},{"$f":"SUM(#REF!)","v":{"$error":"#REF!"}},{"$f":"SUM(#REF!)","v":{"$error":"#REF!"}},{"$f":"SUM(#REF!)","v":{"$error":"#REF!"}},{"$f":"SUM(#REF!)","v":{"$error":"#REF!"}},{"$f":"SUM(#REF!)","v":{"$error":"#REF!"}},{"$f":"SUM(#REF!)","v":{"$error":"#REF!"}},{"$f":"SUM(#REF!)","v":{"$error":"#REF!"}},{"$f":"SUM(#REF!)","v":{"$error":"#REF!"}},{"$f":"SUM(#REF!)","v":{"$error":"#REF!"}},{"$f":"SUM(#REF!)","v":{"$error":"#REF!"}},{"$f":"SUM(#REF!)","v":{"$error":"#REF!"}},{"$f":"SUM(#REF!)","v":{"$error":"#REF!"}},{"$f":"SUM(#REF!)","v":{"$error":"#REF!"}},{"$f":"SUM(#REF!)","v":{"$error":"#REF!"}},{"$f":"SUM(#REF!)","v":{"$error":"#REF!"}},{"$f":"SUM(#REF!)","v":{"$error":"#REF!"}},{"$f":"SUM(#REF!)","v":{"$error":"#REF!"}},{"$f":"SUM(#REF!)","v":{"$error":"#REF!"}},{"$f":"SUM(#REF!)","v":{"$error":"#REF!"}},{"$f":"SUM(#REF!)","v":{"$error":"#REF!"}},{"$f":"SUM(#REF!)","v":{"$error":"#REF!"}},{"$f":"SUM(#REF!)","v":{"$error":"#REF!"}},{"$f":"SUM(#REF!)","v":{"$error":"#REF!"}},{"$f":"SUM(#REF!)","v":{"$error":"#REF!"}},{"$f":"SUM(#REF!)","v":{"$error":"#REF!"}},{"$f":"SUM(#REF!)","v":{"$error":"#REF!"}},{"$f":"SUM(#REF!)","v":{"$error":"#REF!"}},{"$f":"SUM(#REF!)","v":{"$error":"#REF!"}},{"$f":"SUM(#REF!)","v":{"$error":"#REF!"}},{"$f":"SUM(#REF!)","v":{"$error":"#REF!"}},{"$f":"SUM(#REF!)","v":{"$error":"#REF!"}},{"$f":"SUM(#REF!)","v":{"$error":"#REF!"}},{"$f":"SUM(#REF!)","v":{"$error":"#REF!"}},{"$f":"SUM(#REF!)","v":{"$error":"#REF!"}},{"$f":"SUM(#REF!)","v":{"$error":"#REF!"}},{"$f":"SUM(#REF!)","v":{"$error":"#REF!"}},{"$f":"SUM(#REF!)","v":{"$error":"#REF!"}},{"$f":"SUM(#REF!)","v":{"$error":"#REF!"}},{"$f":"SUM(#REF!)","v":{"$error":"#REF!"}},{"$f":"SUM(#REF!)","v":{"$error":"#REF!"}},{"$f":"SUM(#REF!)","v":{"$error":"#REF!"}},{"$f":"SUM(#REF!)","v":{"$error":"#REF!"}},{"$f":"SUM(#REF!)","v":{"$error":"#REF!"}},{"$f":"SUM(#REF!)","v":{"$error":"#REF!"}},{"$f":"SUM(#REF!)","v":{"$error":"#REF!"}},{"$f":"SUM(#REF!)","v":{"$error":"#REF!"}},{"$f":"SUM(#REF!)","v":{"$error":"#REF!"}},{"$f":"SUM(#REF!)","v":{"$error":"#REF!"}},{"$f":"SUM(#REF!)","v":{"$error":"#REF!"}},{"$f":"SUM(#REF!)","v":{"$error":"#REF!"}},{"$f":"SUM(#REF!)","v":{"$error":"#REF!"}},{"$f":"SUM(#REF!)","v":{"$error":"#REF!"}},{"$f":"SUM(#REF!)","v":{"$error":"#REF!"}},{"$f":"SUM(#REF!)","v":{"$error":"#REF!"}},{"$f":"SUM(#REF!)","v":{"$error":"#REF!"}},{"$f":"SUM(#REF!)","v":{"$error":"#REF!"}},{"$f":"SUM(#REF!)","v":{"$error":"#REF!"}},{"$f":"SUM(#REF!)","v":{"$error":"#REF!"}},{"$f":"SUM(#REF!)","v":{"$error":"#REF!"}},{"$f":"SUM(#REF!)","v":{"$error":"#REF!"}},{"$f":"SUM(#REF!)","v":{"$error":"#REF!"}},{"$f":"SUM(#REF!)","v":{"$error":"#REF!"}},{"$f":"SUM(#REF!)","v":{"$error":"#REF!"}},{"$f":"SUM(#REF!)","v":{"$error":"#REF!"}},{"$f":"SUM(#REF!)","v":{"$error":"#REF!"}},{"$f":"SUM(#REF!)","v":{"$error":"#REF!"}},{"$f":"SUM(#REF!)","v":{"$error":"#REF!"}},{"$f":"SUM(#REF!)","v":{"$error":"#REF!"}},{"$f":"SUM(#REF!)","v":{"$error":"#REF!"}},{"$f":"SUM(#REF!)","v":{"$error":"#REF!"}},{"$f":"SUM(#REF!)","v":{"$error":"#REF!"}},{"$f":"SUM(#REF!)","v":{"$error":"#REF!"}},{"$f":"SUM(#REF!)","v":{"$error":"#REF!"}},{"$f":"SUM(#REF!)","v":{"$error":"#REF!"}},{"$f":"SUM(#REF!)","v":{"$error":"#REF!"}},{"$f":"SUM(#REF!)","v":{"$error":"#REF!"}},{"$f":"SUM(#REF!)","v":{"$error":"#REF!"}},{"$f":"SUM(#REF!)","v":{"$error":"#REF!"}},{"$f":"SUM(#REF!)","v":{"$error":"#REF!"}},{"$f":"SUM(#REF!)","v":{"$error":"#REF!"}},{"$f":"SUM(#REF!)","v":{"$error":"#REF!"}},{"$f":"SUM(#REF!)","v":{"$error":"#REF!"}},{"$f":"SUM(#REF!)","v":{"$error":"#REF!"}},{"$f":"SUM(#REF!)","v":{"$error":"#REF!"}},{"$f":"SUM(#REF!)","v":{"$error":"#REF!"}},{"$f":"SUM(#REF!)","v":{"$error":"#REF!"}},{"$f":"SUM(#REF!)","v":{"$error":"#REF!"}},{"$f":"SUM(#REF!)","v":{"$error":"#REF!"}},{"$f":"SUM(#REF!)","v":{"$error":"#REF!"}},{"$f":"SUM(#REF!)","v":{"$error":"#REF!"}},{"$f":"SUM(#REF!)","v":{"$error":"#REF!"}},{"$f":"SUM(#REF!)","v":{"$error":"#REF!"}},{"$f":"SUM(#REF!)","v":{"$error":"#REF!"}},{"$f":"SUM(#REF!)","v":{"$error":"#REF!"}},{"$f":"SUM(#REF!)","v":{"$error":"#REF!"}},{"$f":"SUM(#REF!)","v":{"$error":"#REF!"}},{"$f":"SUM(#REF!)","v":{"$error":"#REF!"}},{"$f":"SUM(#REF!)","v":{"$error":"#REF!"}},{"$f":"SUM(#REF!)","v":{"$error":"#REF!"}},{"$f":"SUM(#REF!)","v":{"$error":"#REF!"}},{"$f":"SUM(#REF!)","v":{"$error":"#REF!"}},{"$f":"SUM(#REF!)","v":{"$error":"#REF!"}},{"$f":"SUM(#REF!)","v":{"$error":"#REF!"}},{"$f":"SUM(#REF!)","v":{"$error":"#REF!"}},{"$f":"SUM(#REF!)","v":{"$error":"#REF!"}},{"$f":"SUM(#REF!)","v":{"$error":"#REF!"}},{"$f":"SUM(#REF!)","v":{"$error":"#REF!"}},{"$f":"SUM(#REF!)","v":{"$error":"#REF!"}},{"$f":"SUM(#REF!)","v":{"$error":"#REF!"}},{"$f":"SUM(#REF!)","v":{"$error":"#REF!"}},{"$f":"SUM(#REF!)","v":{"$error":"#REF!"}},{"$f":"SUM(#REF!)","v":{"$error":"#REF!"}},{"$f":"SUM(#REF!)","v":{"$error":"#REF!"}},{"$f":"SUM(#REF!)","v":{"$error":"#REF!"}},{"$f":"SUM(#REF!)","v":{"$error":"#REF!"}},{"$f":"SUM(#REF!)","v":{"$error":"#REF!"}},{"$f":"SUM(#REF!)","v":{"$error":"#REF!"}},{"$f":"SUM(#REF!)","v":{"$error":"#REF!"}},{"$f":"SUM(#REF!)","v":{"$error":"#REF!"}},{"$f":"SUM(#REF!)","v":{"$error":"#REF!"}},{"$f":"SUM(#REF!)","v":{"$error":"#REF!"}},{"$f":"SUM(#REF!)","v":{"$error":"#REF!"}},{"$f":"SUM(#REF!)","v":{"$error":"#REF!"}},{"$f":"SUM(#REF!)","v":{"$error":"#REF!"}},{"$f":"SUM(#REF!)","v":{"$error":"#REF!"}},{"$f":"SUM(#REF!)","v":{"$error":"#REF!"}},{"$f":"SUM(#REF!)","v":{"$error":"#REF!"}},{"$f":"SUM(#REF!)","v":{"$error":"#REF!"}},{"$f":"SUM(#REF!)","v":{"$error":"#REF!"}},{"$f":"SUM(#REF!)","v":{"$error":"#REF!"}},{"$f":"SUM(#REF!)","v":{"$error":"#REF!"}},{"$f":"SUM(#REF!)","v":{"$error":"#REF!"}},{"$f":"SUM(#REF!)","v":{"$error":"#REF!"}},{"$f":"SUM(#REF!)","v":{"$error":"#REF!"}},{"$f":"SUM(#REF!)","v":{"$error":"#REF!"}},{"$f":"SUM(#REF!)","v":{"$error":"#REF!"}},{"$f":"SUM(#REF!)","v":{"$error":"#REF!"}},{"$f":"SUM(#REF!)","v":{"$error":"#REF!"}},{"$f":"SUM(#REF!)","v":{"$error":"#REF!"}},{"$f":"SUM(#REF!)","v":{"$error":"#REF!"}},{"$f":"SUM(#REF!)","v":{"$error":"#REF!"}},{"$f":"SUM(#REF!)","v":{"$error":"#REF!"}},{"$f":"SUM(#REF!)","v":{"$error":"#REF!"}},{"$f":"SUM(#REF!)","v":{"$error":"#REF!"}},{"$f":"SUM(#REF!)","v":{"$error":"#REF!"}},{"$f":"SUM(#REF!)","v":{"$error":"#REF!"}},{"$f":"SUM(#REF!)","v":{"$error":"#REF!"}},{"$f":"SUM(#REF!)","v":{"$error":"#REF!"}},{"$f":"SUM(#REF!)","v":{"$error":"#REF!"}},{"$f":"SUM(#REF!)","v":{"$error":"#REF!"}},{"$f":"SUM(#REF!)","v":{"$error":"#REF!"}},{"$f":"SUM(#REF!)","v":{"$error":"#REF!"}},{"$f":"SUM(#REF!)","v":{"$error":"#REF!"}},{"$f":"SUM(#REF!)","v":{"$error":"#REF!"}},{"$f":"SUM(#REF!)","v":{"$error":"#REF!"}},{"$f":"SUM(#REF!)","v":{"$error":"#REF!"}},{"$f":"SUM(#REF!)","v":{"$error":"#REF!"}},{"$f":"SUM(#REF!)","v":{"$error":"#REF!"}},{"$f":"SUM(#REF!)","v":{"$error":"#REF!"}},{"$f":"SUM(#REF!)","v":{"$error":"#REF!"}},{"$f":"SUM(#REF!)","v":{"$error":"#REF!"}},{"$f":"SUM(#REF!)","v":{"$error":"#REF!"}},{"$f":"SUM(#REF!)","v":{"$error":"#REF!"}},{"$f":"SUM(#REF!)","v":{"$error":"#REF!"}},{"$f":"SUM(#REF!)","v":{"$error":"#REF!"}},{"$f":"SUM(#REF!)","v":{"$error":"#REF!"}},{"$f":"SUM(#REF!)","v":{"$error":"#REF!"}},{"$f":"SUM(#REF!)","v":{"$error":"#REF!"}},{"$f":"SUM(#REF!)","v":{"$error":"#REF!"}},{"$f":"SUM(#REF!)","v":{"$error":"#REF!"}},{"$f":"SUM(#REF!)","v":{"$error":"#REF!"}},{"$f":"SUM(#REF!)","v":{"$error":"#REF!"}},{"$f":"SUM(#REF!)","v":{"$error":"#REF!"}},{"$f":"SUM(#REF!)","v":{"$error":"#REF!"}},{"$f":"SUM(#REF!)","v":{"$error":"#REF!"}},{"$f":"SUM(#REF!)","v":{"$error":"#REF!"}},{"$f":"SUM(#REF!)","v":{"$error":"#REF!"}},{"$f":"SUM(#REF!)","v":{"$error":"#REF!"}},{"$f":"SUM(#REF!)","v":{"$error":"#REF!"}},{"$f":"SUM(#REF!)","v":{"$error":"#REF!"}},{"$f":"SUM(#REF!)","v":{"$error":"#REF!"}},{"$f":"SUM(#REF!)","v":{"$error":"#REF!"}},{"$f":"SUM(#REF!)","v":{"$error":"#REF!"}},{"$f":"SUM(#REF!)","v":{"$error":"#REF!"}},{"$f":"SUM(#REF!)","v":{"$error":"#REF!"}},{"$f":"SUM(#REF!)","v":{"$error":"#REF!"}},{"$f":"SUM(#REF!)","v":{"$error":"#REF!"}},{"$f":"SUM(#REF!)","v":{"$error":"#REF!"}},{"$f":"SUM(#REF!)","v":{"$error":"#REF!"}},{"$f":"SUM(#REF!)","v":{"$error":"#REF!"}},{"$f":"SUM(#REF!)","v":{"$error":"#REF!"}},{"$f":"SUM(#REF!)","v":{"$error":"#REF!"}},{"$f":"SUM(#REF!)","v":{"$error":"#REF!"}},{"$f":"SUM(#REF!)","v":{"$error":"#REF!"}},{"$f":"SUM(#REF!)","v":{"$error":"#REF!"}},{"$f":"SUM(#REF!)","v":{"$error":"#REF!"}},{"$f":"SUM(#REF!)","v":{"$error":"#REF!"}},{"$f":"SUM(#REF!)","v":{"$error":"#REF!"}},{"$f":"SUM(#REF!)","v":{"$error":"#REF!"}},{"$f":"SUM(#REF!)","v":{"$error":"#REF!"}},{"$f":"SUM(#REF!)","v":{"$error":"#REF!"}},{"$f":"SUM(#REF!)","v":{"$error":"#REF!"}},{"$f":"SUM(#REF!)","v":{"$error":"#REF!"}},{"$f":"SUM(#REF!)","v":{"$error":"#REF!"}},{"$f":"SUM(#REF!)","v":{"$error":"#REF!"}},{"$f":"SUM(#REF!)","v":{"$error":"#REF!"}},{"$f":"SUM(#REF!)","v":{"$error":"#REF!"}},{"$f":"SUM(#REF!)","v":{"$error":"#REF!"}},{"$f":"SUM(#REF!)","v":{"$error":"#REF!"}},{"$f":"SUM(#REF!)","v":{"$error":"#REF!"}},{"$f":"SUM(#REF!)","v":{"$error":"#REF!"}},{"$f":"SUM(#REF!)","v":{"$error":"#REF!"}},{"$f":"SUM(#REF!)","v":{"$error":"#REF!"}},{"$f":"SUM(#REF!)","v":{"$error":"#REF!"}},{"$f":"SUM(#REF!)","v":{"$error":"#REF!"}},{"$f":"SUM(#REF!)","v":{"$error":"#REF!"}},{"$f":"SUM(#REF!)","v":{"$error":"#REF!"}},{"$f":"SUM(#REF!)","v":{"$error":"#REF!"}},{"$f":"SUM(#REF!)","v":{"$error":"#REF!"}},{"$f":"SUM(#REF!)","v":{"$error":"#REF!"}},{"$f":"SUM(#REF!)","v":{"$error":"#REF!"}},{"$f":"SUM(#REF!)","v":{"$error":"#REF!"}},{"$f":"SUM(#REF!)","v":{"$error":"#REF!"}},{"$f":"SUM(#REF!)","v":{"$error":"#REF!"}},{"$f":"SUM(#REF!)","v":{"$error":"#REF!"}},{"$f":"SUM(#REF!)","v":{"$error":"#REF!"}},{"$f":"SUM(#REF!)","v":{"$error":"#REF!"}},{"$f":"SUM(#REF!)","v":{"$error":"#REF!"}},{"$f":"SUM(#REF!)","v":{"$error":"#REF!"}},{"$f":"SUM(#REF!)","v":{"$error":"#REF!"}},{"$f":"SUM(#REF!)","v":{"$error":"#REF!"}},{"$f":"SUM(#REF!)","v":{"$error":"#REF!"}},{"$f":"SUM(#REF!)","v":{"$error":"#REF!"}},{"$f":"SUM(#REF!)","v":{"$error":"#REF!"}},{"$f":"SUM(#REF!)","v":{"$error":"#REF!"}},{"$f":"SUM(#REF!)","v":{"$error":"#REF!"}},{"$f":"SUM(#REF!)","v":{"$error":"#REF!"}},{"$f":"SUM(#REF!)","v":{"$error":"#REF!"}},{"$f":"SUM(#REF!)","v":{"$error":"#REF!"}},{"$f":"SUM(#REF!)","v":{"$error":"#REF!"}},{"$f":"SUM(#REF!)","v":{"$error":"#REF!"}},{"$f":"SUM(#REF!)","v":{"$error":"#REF!"}},{"$f":"SUM(#REF!)","v":{"$error":"#REF!"}},{"$f":"SUM(#REF!)","v":{"$error":"#REF!"}},{"$f":"SUM(#REF!)","v":{"$error":"#REF!"}},{"$f":"SUM(#REF!)","v":{"$error":"#REF!"}},{"$f":"SUM(#REF!)","v":{"$error":"#REF!"}},{"$f":"SUM(#REF!)","v":{"$error":"#REF!"}},{"$f":"SUM(#REF!)","v":{"$error":"#REF!"}},{"$f":"SUM(#REF!)","v":{"$error":"#REF!"}},{"$f":"SUM(#REF!)","v":{"$error":"#REF!"}},{"$f":"SUM(#REF!)","v":{"$error":"#REF!"}},{"$f":"SUM(#REF!)","v":{"$error":"#REF!"}},{"$f":"SUM(#REF!)","v":{"$error":"#REF!"}},{"$f":"SUM(#REF!)","v":{"$error":"#REF!"}},{"$f":"SUM(#REF!)","v":{"$error":"#REF!"}},{"$f":"SUM(#REF!)","v":{"$error":"#REF!"}},{"$f":"SUM(#REF!)","v":{"$error":"#REF!"}},{"$f":"SUM(#REF!)","v":{"$error":"#REF!"}},{"$f":"SUM(#REF!)","v":{"$error":"#REF!"}},{"$f":"SUM(#REF!)","v":{"$error":"#REF!"}},{"$f":"SUM(#REF!)","v":{"$error":"#REF!"}},{"$f":"SUM(#REF!)","v":{"$error":"#REF!"}},{"$f":"SUM(#REF!)","v":{"$error":"#REF!"}},{"$f":"SUM(#REF!)","v":{"$error":"#REF!"}},{"$f":"SUM(#REF!)","v":{"$error":"#REF!"}},{"$f":"SUM(#REF!)","v":{"$error":"#REF!"}},{"$f":"SUM(#REF!)","v":{"$error":"#REF!"}},{"$f":"SUM(#REF!)","v":{"$error":"#REF!"}},{"$f":"SUM(#REF!)","v":{"$error":"#REF!"}},{"$f":"SUM(#REF!)","v":{"$error":"#REF!"}},{"$f":"SUM(#REF!)","v":{"$error":"#REF!"}},{"$f":"SUM(#REF!)","v":{"$error":"#REF!"}},{"$f":"SUM(#REF!)","v":{"$error":"#REF!"}},{"$f":"SUM(#REF!)","v":{"$error":"#REF!"}},{"$f":"SUM(#REF!)","v":{"$error":"#REF!"}},{"$f":"SUM(#REF!)","v":{"$error":"#REF!"}},{"$f":"SUM(#REF!)","v":{"$error":"#REF!"}},{"$f":"SUM(#REF!)","v":{"$error":"#REF!"}},{"$f":"SUM(#REF!)","v":{"$error":"#REF!"}},{"$f":"SUM(#REF!)","v":{"$error":"#REF!"}},{"$f":"SUM(#REF!)","v":{"$error":"#REF!"}},{"$f":"SUM(#REF!)","v":{"$error":"#REF!"}},{"$f":"SUM(#REF!)","v":{"$error":"#REF!"}},{"$f":"SUM(#REF!)","v":{"$error":"#REF!"}},{"$f":"SUM(#REF!)","v":{"$error":"#REF!"}},{"$f":"SUM(#REF!)","v":{"$error":"#REF!"}},{"$f":"SUM(#REF!)","v":{"$error":"#REF!"}},{"$f":"SUM(#REF!)","v":{"$error":"#REF!"}},{"$f":"SUM(#REF!)","v":{"$error":"#REF!"}},{"$f":"SUM(#REF!)","v":{"$error":"#REF!"}},{"$f":"SUM(#REF!)","v":{"$error":"#REF!"}},{"$f":"SUM(#REF!)","v":{"$error":"#REF!"}},{"$f":"SUM(#REF!)","v":{"$error":"#REF!"}},{"$f":"SUM(#REF!)","v":{"$error":"#REF!"}},{"$f":"SUM(#REF!)","v":{"$error":"#REF!"}},{"$f":"SUM(#REF!)","v":{"$error":"#REF!"}},{"$f":"SUM(#REF!)","v":{"$error":"#REF!"}},{"$f":"SUM(#REF!)","v":{"$error":"#REF!"}},{"$f":"SUM(#REF!)","v":{"$error":"#REF!"}},{"$f":"SUM(#REF!)","v":{"$error":"#REF!"}},{"$f":"SUM(#REF!)","v":{"$error":"#REF!"}},{"$f":"SUM(#REF!)","v":{"$error":"#REF!"}},{"$f":"SUM(#REF!)","v":{"$error":"#REF!"}},{"$f":"SUM(#REF!)","v":{"$error":"#REF!"}},{"$f":"SUM(#REF!)","v":{"$error":"#REF!"}},{"$f":"SUM(#REF!)","v":{"$error":"#REF!"}},{"$f":"SUM(#REF!)","v":{"$error":"#REF!"}},{"$f":"SUM(#REF!)","v":{"$error":"#REF!"}},{"$f":"SUM(#REF!)","v":{"$error":"#REF!"}},{"$f":"SUM(#REF!)","v":{"$error":"#REF!"}},{"$f":"SUM(#REF!)","v":{"$error":"#REF!"}},{"$f":"SUM(#REF!)","v":{"$error":"#REF!"}},{"$f":"SUM(#REF!)","v":{"$error":"#REF!"}},{"$f":"SUM(#REF!)","v":{"$error":"#REF!"}},{"$f":"SUM(#REF!)","v":{"$error":"#REF!"}},{"$f":"SUM(#REF!)","v":{"$error":"#REF!"}},{"$f":"SUM(#REF!)","v":{"$error":"#REF!"}},{"$f":"SUM(#REF!)","v":{"$error":"#REF!"}},{"$f":"SUM(#REF!)","v":{"$error":"#REF!"}},{"$f":"SUM(#REF!)","v":{"$error":"#REF!"}},{"$f":"SUM(#REF!)","v":{"$error":"#REF!"}},{"$f":"SUM(#REF!)","v":{"$error":"#REF!"}},{"$f":"SUM(#REF!)","v":{"$error":"#REF!"}},{"$f":"SUM(#REF!)","v":{"$error":"#REF!"}},{"$f":"SUM(#REF!)","v":{"$error":"#REF!"}},{"$f":"SUM(#REF!)","v":{"$error":"#REF!"}},{"$f":"SUM(#REF!)","v":{"$error":"#REF!"}},{"$f":"SUM(#REF!)","v":{"$error":"#REF!"}},{"$f":"SUM(#REF!)","v":{"$error":"#REF!"}},{"$f":"SUM(#REF!)","v":{"$error":"#REF!"}},{"$f":"SUM(#REF!)","v":{"$error":"#REF!"}},{"$f":"SUM(#REF!)","v":{"$error":"#REF!"}},{"$f":"SUM(#REF!)","v":{"$error":"#REF!"}},{"$f":"SUM(#REF!)","v":{"$error":"#REF!"}},{"$f":"SUM(#REF!)","v":{"$error":"#REF!"}},{"$f":"SUM(#REF!)","v":{"$error":"#REF!"}},{"$f":"SUM(#REF!)","v":{"$error":"#REF!"}},{"$f":"SUM(#REF!)","v":{"$error":"#REF!"}},{"$f":"SUM(#REF!)","v":{"$error":"#REF!"}},{"$f":"SUM(#REF!)","v":{"$error":"#REF!"}},{"$f":"SUM(#REF!)","v":{"$error":"#REF!"}},{"$f":"SUM(#REF!)","v":{"$error":"#REF!"}},{"$f":"SUM(#REF!)","v":{"$error":"#REF!"}},{"$f":"SUM(#REF!)","v":{"$error":"#REF!"}},{"$f":"SUM(#REF!)","v":{"$error":"#REF!"}},{"$f":"SUM(#REF!)","v":{"$error":"#REF!"}},{"$f":"SUM(#REF!)","v":{"$error":"#REF!"}},{"$f":"SUM(#REF!)","v":{"$error":"#REF!"}},{"$f":"SUM(#REF!)","v":{"$error":"#REF!"}},{"$f":"SUM(#REF!)","v":{"$error":"#REF!"}},{"$f":"SUM(#REF!)","v":{"$error":"#REF!"}},{"$f":"SUM(#REF!)","v":{"$error":"#REF!"}},{"$f":"SUM(#REF!)","v":{"$error":"#REF!"}},{"$f":"SUM(#REF!)","v":{"$error":"#REF!"}},{"$f":"SUM(#REF!)","v":{"$error":"#REF!"}},{"$f":"SUM(#REF!)","v":{"$error":"#REF!"}},{"$f":"SUM(#REF!)","v":{"$error":"#REF!"}},{"$f":"SUM(#REF!)","v":{"$error":"#REF!"}},{"$f":"SUM(#REF!)","v":{"$error":"#REF!"}},{"$f":"SUM(#REF!)","v":{"$error":"#REF!"}},{"$f":"SUM(#REF!)","v":{"$error":"#REF!"}},{"$f":"SUM(#REF!)","v":{"$error":"#REF!"}},{"$f":"SUM(#REF!)","v":{"$error":"#REF!"}},{"$f":"SUM(#REF!)","v":{"$error":"#REF!"}},{"$f":"SUM(#REF!)","v":{"$error":"#REF!"}},{"$f":"SUM(#REF!)","v":{"$error":"#REF!"}},{"$f":"SUM(#REF!)","v":{"$error":"#REF!"}},{"$f":"SUM(#REF!)","v":{"$error":"#REF!"}},{"$f":"SUM(#REF!)","v":{"$error":"#REF!"}},{"$f":"SUM(#REF!)","v":{"$error":"#REF!"}},{"$f":"SUM(#REF!)","v":{"$error":"#REF!"}},{"$f":"SUM(#REF!)","v":{"$error":"#REF!"}},{"$f":"SUM(#REF!)","v":{"$error":"#REF!"}},{"$f":"SUM(#REF!)","v":{"$error":"#REF!"}},{"$f":"SUM(#REF!)","v":{"$error":"#REF!"}},{"$f":"SUM(#REF!)","v":{"$error":"#REF!"}},{"$f":"SUM(#REF!)","v":{"$error":"#REF!"}},{"$f":"SUM(#REF!)","v":{"$error":"#REF!"}},{"$f":"SUM(#REF!)","v":{"$error":"#REF!"}},{"$f":"SUM(#REF!)","v":{"$error":"#REF!"}},{"$f":"SUM(#REF!)","v":{"$error":"#REF!"}},{"$f":"SUM(#REF!)","v":{"$error":"#REF!"}},{"$f":"SUM(#REF!)","v":{"$error":"#REF!"}},{"$f":"SUM(#REF!)","v":{"$error":"#REF!"}},{"$f":"SUM(#REF!)","v":{"$error":"#REF!"}},{"$f":"SUM(#REF!)","v":{"$error":"#REF!"}},{"$f":"SUM(#REF!)","v":{"$error":"#REF!"}},{"$f":"SUM(#REF!)","v":{"$error":"#REF!"}},{"$f":"SUM(#REF!)","v":{"$error":"#REF!"}},{"$f":"SUM(#REF!)","v":{"$error":"#REF!"}},{"$f":"SUM(#REF!)","v":{"$error":"#REF!"}},{"$f":"SUM(#REF!)","v":{"$error":"#REF!"}},{"$f":"SUM(#REF!)","v":{"$error":"#REF!"}},{"$f":"SUM(#REF!)","v":{"$error":"#REF!"}},{"$f":"SUM(#REF!)","v":{"$error":"#REF!"}},{"$f":"SUM(#REF!)","v":{"$error":"#REF!"}},{"$f":"SUM(#REF!)","v":{"$error":"#REF!"}},{"$f":"SUM(#REF!)","v":{"$error":"#REF!"}},{"$f":"SUM(#REF!)","v":{"$error":"#REF!"}},{"$f":"SUM(#REF!)","v":{"$error":"#REF!"}},{"$f":"SUM(#REF!)","v":{"$error":"#REF!"}},{"$f":"SUM(#REF!)","v":{"$error":"#REF!"}},{"$f":"SUM(#REF!)","v":{"$error":"#REF!"}},{"$f":"SUM(#REF!)","v":{"$error":"#REF!"}},{"$f":"SUM(#REF!)","v":{"$error":"#REF!"}},{"$f":"SUM(#REF!)","v":{"$error":"#REF!"}},{"$f":"SUM(#REF!)","v":{"$error":"#REF!"}},{"$f":"SUM(#REF!)","v":{"$error":"#REF!"}},{"$f":"SUM(#REF!)","v":{"$error":"#REF!"}},{"$f":"SUM(#REF!)","v":{"$error":"#REF!"}},{"$f":"SUM(#REF!)","v":{"$error":"#REF!"}},{"$f":"SUM(#REF!)","v":{"$error":"#REF!"}},{"$f":"SUM(#REF!)","v":{"$error":"#REF!"}},{"$f":"SUM(#REF!)","v":{"$error":"#REF!"}},{"$f":"SUM(#REF!)","v":{"$error":"#REF!"}},{"$f":"SUM(#REF!)","v":{"$error":"#REF!"}},{"$f":"SUM(#REF!)","v":{"$error":"#REF!"}},{"$f":"SUM(#REF!)","v":{"$error":"#REF!"}},{"$f":"SUM(#REF!)","v":{"$error":"#REF!"}},{"$f":"SUM(#REF!)","v":{"$error":"#REF!"}},{"$f":"SUM(#REF!)","v":{"$error":"#REF!"}},{"$f":"SUM(#REF!)","v":{"$error":"#REF!"}},{"$f":"SUM(#REF!)","v":{"$error":"#REF!"}},{"$f":"SUM(#REF!)","v":{"$error":"#REF!"}},{"$f":"SUM(#REF!)","v":{"$error":"#REF!"}},{"$f":"SUM(#REF!)","v":{"$error":"#REF!"}},{"$f":"SUM(#REF!)","v":{"$error":"#REF!"}},{"$f":"SUM(#REF!)","v":{"$error":"#REF!"}},{"$f":"SUM(#REF!)","v":{"$error":"#REF!"}},{"$f":"SUM(#REF!)","v":{"$error":"#REF!"}},{"$f":"SUM(#REF!)","v":{"$error":"#REF!"}},{"$f":"SUM(#REF!)","v":{"$error":"#REF!"}},{"$f":"SUM(#REF!)","v":{"$error":"#REF!"}},{"$f":"SUM(#REF!)","v":{"$error":"#REF!"}},{"$f":"SUM(#REF!)","v":{"$error":"#REF!"}},{"$f":"SUM(#REF!)","v":{"$error":"#REF!"}},{"$f":"SUM(#REF!)","v":{"$error":"#REF!"}},{"$f":"SUM(#REF!)","v":{"$error":"#REF!"}},{"$f":"SUM(#REF!)","v":{"$error":"#REF!"}},{"$f":"SUM(#REF!)","v":{"$error":"#REF!"}},{"$f":"SUM(#REF!)","v":{"$error":"#REF!"}},{"$f":"SUM(#REF!)","v":{"$error":"#REF!"}},{"$f":"SUM(#REF!)","v":{"$error":"#REF!"}},{"$f":"SUM(#REF!)","v":{"$error":"#REF!"}},{"$f":"SUM(#REF!)","v":{"$error":"#REF!"}},{"$f":"SUM(#REF!)","v":{"$error":"#REF!"}},{"$f":"SUM(#REF!)","v":{"$error":"#REF!"}},{"$f":"SUM(#REF!)","v":{"$error":"#REF!"}},{"$f":"SUM(#REF!)","v":{"$error":"#REF!"}},{"$f":"SUM(#REF!)","v":{"$error":"#REF!"}},{"$f":"SUM(#REF!)","v":{"$error":"#REF!"}},{"$f":"SUM(#REF!)","v":{"$error":"#REF!"}},{"$f":"SUM(#REF!)","v":{"$error":"#REF!"}},{"$f":"SUM(#REF!)","v":{"$error":"#REF!"}},{"$f":"SUM(#REF!)","v":{"$error":"#REF!"}},{"$f":"SUM(#REF!)","v":{"$error":"#REF!"}},{"$f":"SUM(#REF!)","v":{"$error":"#REF!"}},{"$f":"SUM(#REF!)","v":{"$error":"#REF!"}},{"$f":"SUM(#REF!)","v":{"$error":"#REF!"}},{"$f":"SUM(#REF!)","v":{"$error":"#REF!"}},{"$f":"SUM(#REF!)","v":{"$error":"#REF!"}},{"$f":"SUM(#REF!)","v":{"$error":"#REF!"}},{"$f":"SUM(#REF!)","v":{"$error":"#REF!"}},{"$f":"SUM(#REF!)","v":{"$error":"#REF!"}},{"$f":"SUM(#REF!)","v":{"$error":"#REF!"}},{"$f":"SUM(#REF!)","v":{"$error":"#REF!"}},{"$f":"SUM(#REF!)","v":{"$error":"#REF!"}},{"$f":"SUM(#REF!)","v":{"$error":"#REF!"}},{"$f":"SUM(#REF!)","v":{"$error":"#REF!"}},{"$f":"SUM(#REF!)","v":{"$error":"#REF!"}},{"$f":"SUM(#REF!)","v":{"$error":"#REF!"}},{"$f":"SUM(#REF!)","v":{"$error":"#REF!"}},{"$f":"SUM(#REF!)","v":{"$error":"#REF!"}},{"$f":"SUM(#REF!)","v":{"$error":"#REF!"}},{"$f":"SUM(#REF!)","v":{"$error":"#REF!"}},{"$f":"SUM(#REF!)","v":{"$error":"#REF!"}},{"$f":"SUM(#REF!)","v":{"$error":"#REF!"}},{"$f":"SUM(#REF!)","v":{"$error":"#REF!"}},{"$f":"SUM(#REF!)","v":{"$error":"#REF!"}},{"$f":"SUM(#REF!)","v":{"$error":"#REF!"}},{"$f":"SUM(#REF!)","v":{"$error":"#REF!"}},{"$f":"SUM(#REF!)","v":{"$error":"#REF!"}},{"$f":"SUM(#REF!)","v":{"$error":"#REF!"}},{"$f":"SUM(#REF!)","v":{"$error":"#REF!"}},{"$f":"SUM(#REF!)","v":{"$error":"#REF!"}},{"$f":"SUM(#REF!)","v":{"$error":"#REF!"}},{"$f":"SUM(#REF!)","v":{"$error":"#REF!"}},{"$f":"SUM(#REF!)","v":{"$error":"#REF!"}},{"$f":"SUM(#REF!)","v":{"$error":"#REF!"}},{"$f":"SUM(#REF!)","v":{"$error":"#REF!"}},{"$f":"SUM(#REF!)","v":{"$error":"#REF!"}},{"$f":"SUM(#REF!)","v":{"$error":"#REF!"}},{"$f":"SUM(#REF!)","v":{"$error":"#REF!"}},{"$f":"SUM(#REF!)","v":{"$error":"#REF!"}},{"$f":"SUM(#REF!)","v":{"$error":"#REF!"}},{"$f":"SUM(#REF!)","v":{"$error":"#REF!"}},{"$f":"SUM(#REF!)","v":{"$error":"#REF!"}},{"$f":"SUM(#REF!)","v":{"$error":"#REF!"}},{"$f":"SUM(#REF!)","v":{"$error":"#REF!"}},{"$f":"SUM(#REF!)","v":{"$error":"#REF!"}},{"$f":"SUM(#REF!)","v":{"$error":"#REF!"}},{"$f":"SUM(#REF!)","v":{"$error":"#REF!"}},{"$f":"SUM(#REF!)","v":{"$error":"#REF!"}},{"$f":"SUM(#REF!)","v":{"$error":"#REF!"}},{"$f":"SUM(#REF!)","v":{"$error":"#REF!"}},{"$f":"SUM(#REF!)","v":{"$error":"#REF!"}},{"$f":"SUM(#REF!)","v":{"$error":"#REF!"}},{"$f":"SUM(#REF!)","v":{"$error":"#REF!"}},{"$f":"SUM(#REF!)","v":{"$error":"#REF!"}},{"$f":"SUM(#REF!)","v":{"$error":"#REF!"}},{"$f":"SUM(#REF!)","v":{"$error":"#REF!"}},{"$f":"SUM(#REF!)","v":{"$error":"#REF!"}},{"$f":"SUM(#REF!)","v":{"$error":"#REF!"}},{"$f":"SUM(#REF!)","v":{"$error":"#REF!"}},{"$f":"SUM(#REF!)","v":{"$error":"#REF!"}},{"$f":"SUM(#REF!)","v":{"$error":"#REF!"}},{"$f":"SUM(#REF!)","v":{"$error":"#REF!"}},{"$f":"SUM(#REF!)","v":{"$error":"#REF!"}},{"$f":"SUM(#REF!)","v":{"$error":"#REF!"}},{"$f":"SUM(#REF!)","v":{"$error":"#REF!"}},{"$f":"SUM(#REF!)","v":{"$error":"#REF!"}},{"$f":"SUM(#REF!)","v":{"$error":"#REF!"}},{"$f":"SUM(#REF!)","v":{"$error":"#REF!"}},{"$f":"SUM(#REF!)","v":{"$error":"#REF!"}},{"$f":"SUM(#REF!)","v":{"$error":"#REF!"}},{"$f":"SUM(#REF!)","v":{"$error":"#REF!"}},{"$f":"SUM(#REF!)","v":{"$error":"#REF!"}},{"$f":"SUM(#REF!)","v":{"$error":"#REF!"}},{"$f":"SUM(#REF!)","v":{"$error":"#REF!"}},{"$f":"SUM(#REF!)","v":{"$error":"#REF!"}},{"$f":"SUM(#REF!)","v":{"$error":"#REF!"}},{"$f":"SUM(#REF!)","v":{"$error":"#REF!"}},{"$f":"SUM(#REF!)","v":{"$error":"#REF!"}},{"$f":"SUM(#REF!)","v":{"$error":"#REF!"}},{"$f":"SUM(#REF!)","v":{"$error":"#REF!"}},{"$f":"SUM(#REF!)","v":{"$error":"#REF!"}},{"$f":"SUM(#REF!)","v":{"$error":"#REF!"}},{"$f":"SUM(#REF!)","v":{"$error":"#REF!"}},{"$f":"SUM(#REF!)","v":{"$error":"#REF!"}},{"$f":"SUM(#REF!)","v":{"$error":"#REF!"}},{"$f":"SUM(#REF!)","v":{"$error":"#REF!"}},{"$f":"SUM(#REF!)","v":{"$error":"#REF!"}},{"$f":"SUM(#REF!)","v":{"$error":"#REF!"}},{"$f":"SUM(#REF!)","v":{"$error":"#REF!"}},{"$f":"SUM(#REF!)","v":{"$error":"#REF!"}},{"$f":"SUM(#REF!)","v":{"$error":"#REF!"}},{"$f":"SUM(#REF!)","v":{"$error":"#REF!"}},{"$f":"SUM(#REF!)","v":{"$error":"#REF!"}},{"$f":"SUM(#REF!)","v":{"$error":"#REF!"}},{"$f":"SUM(#REF!)","v":{"$error":"#REF!"}},{"$f":"SUM(#REF!)","v":{"$error":"#REF!"}},{"$f":"SUM(#REF!)","v":{"$error":"#REF!"}},{"$f":"SUM(#REF!)","v":{"$error":"#REF!"}},{"$f":"SUM(#REF!)","v":{"$error":"#REF!"}},{"$f":"SUM(#REF!)","v":{"$error":"#REF!"}},{"$f":"SUM(#REF!)","v":{"$error":"#REF!"}},{"$f":"SUM(#REF!)","v":{"$error":"#REF!"}},{"$f":"SUM(#REF!)","v":{"$error":"#REF!"}},{"$f":"SUM(#REF!)","v":{"$error":"#REF!"}},{"$f":"SUM(#REF!)","v":{"$error":"#REF!"}},{"$f":"SUM(#REF!)","v":{"$error":"#REF!"}},{"$f":"SUM(#REF!)","v":{"$error":"#REF!"}},{"$f":"SUM(#REF!)","v":{"$error":"#REF!"}},{"$f":"SUM(#REF!)","v":{"$error":"#REF!"}},{"$f":"SUM(#REF!)","v":{"$error":"#REF!"}},{"$f":"SUM(#REF!)","v":{"$error":"#REF!"}},{"$f":"SUM(#REF!)","v":{"$error":"#REF!"}},{"$f":"SUM(#REF!)","v":{"$error":"#REF!"}},{"$f":"SUM(#REF!)","v":{"$error":"#REF!"}},{"$f":"SUM(#REF!)","v":{"$error":"#REF!"}},{"$f":"SUM(#REF!)","v":{"$error":"#REF!"}},{"$f":"SUM(#REF!)","v":{"$error":"#REF!"}},{"$f":"SUM(#REF!)","v":{"$error":"#REF!"}},{"$f":"SUM(#REF!)","v":{"$error":"#REF!"}},{"$f":"SUM(#REF!)","v":{"$error":"#REF!"}},{"$f":"SUM(#REF!)","v":{"$error":"#REF!"}},{"$f":"SUM(#REF!)","v":{"$error":"#REF!"}},{"$f":"SUM(#REF!)","v":{"$error":"#REF!"}},{"$f":"SUM(#REF!)","v":{"$error":"#REF!"}},{"$f":"SUM(#REF!)","v":{"$error":"#REF!"}},{"$f":"SUM(#REF!)","v":{"$error":"#REF!"}},{"$f":"SUM(#REF!)","v":{"$error":"#REF!"}},{"$f":"SUM(#REF!)","v":{"$error":"#REF!"}},{"$f":"SUM(#REF!)","v":{"$error":"#REF!"}},{"$f":"SUM(#REF!)","v":{"$error":"#REF!"}},{"$f":"SUM(#REF!)","v":{"$error":"#REF!"}},{"$f":"SUM(#REF!)","v":{"$error":"#REF!"}},{"$f":"SUM(#REF!)","v":{"$error":"#REF!"}},{"$f":"SUM(#REF!)","v":{"$error":"#REF!"}},{"$f":"SUM(#REF!)","v":{"$error":"#REF!"}},{"$f":"SUM(#REF!)","v":{"$error":"#REF!"}},{"$f":"SUM(#REF!)","v":{"$error":"#REF!"}},{"$f":"SUM(#REF!)","v":{"$error":"#REF!"}},{"$f":"SUM(#REF!)","v":{"$error":"#REF!"}},{"$f":"SUM(#REF!)","v":{"$error":"#REF!"}},{"$f":"SUM(#REF!)","v":{"$error":"#REF!"}},{"$f":"SUM(#REF!)","v":{"$error":"#REF!"}},{"$f":"SUM(#REF!)","v":{"$error":"#REF!"}},{"$f":"SUM(#REF!)","v":{"$error":"#REF!"}},{"$f":"SUM(#REF!)","v":{"$error":"#REF!"}},{"$f":"SUM(#REF!)","v":{"$error":"#REF!"}},{"$f":"SUM(#REF!)","v":{"$error":"#REF!"}},{"$f":"SUM(#REF!)","v":{"$error":"#REF!"}},{"$f":"SUM(#REF!)","v":{"$error":"#REF!"}},{"$f":"SUM(#REF!)","v":{"$error":"#REF!"}},{"$f":"SUM(#REF!)","v":{"$error":"#REF!"}},{"$f":"SUM(#REF!)","v":{"$error":"#REF!"}},{"$f":"SUM(#REF!)","v":{"$error":"#REF!"}},{"$f":"SUM(#REF!)","v":{"$error":"#REF!"}},{"$f":"SUM(#REF!)","v":{"$error":"#REF!"}},{"$f":"SUM(#REF!)","v":{"$error":"#REF!"}},{"$f":"SUM(#REF!)","v":{"$error":"#REF!"}},{"$f":"SUM(#REF!)","v":{"$error":"#REF!"}},{"$f":"SUM(#REF!)","v":{"$error":"#REF!"}},{"$f":"SUM(#REF!)","v":{"$error":"#REF!"}},{"$f":"SUM(#REF!)","v":{"$error":"#REF!"}},{"$f":"SUM(#REF!)","v":{"$error":"#REF!"}},{"$f":"SUM(#REF!)","v":{"$error":"#REF!"}},{"$f":"SUM(#REF!)","v":{"$error":"#REF!"}},{"$f":"SUM(#REF!)","v":{"$error":"#REF!"}},{"$f":"SUM(#REF!)","v":{"$error":"#REF!"}},{"$f":"SUM(#REF!)","v":{"$error":"#REF!"}},{"$f":"SUM(#REF!)","v":{"$error":"#REF!"}},{"$f":"SUM(#REF!)","v":{"$error":"#REF!"}},{"$f":"SUM(#REF!)","v":{"$error":"#REF!"}},{"$f":"SUM(#REF!)","v":{"$error":"#REF!"}},{"$f":"SUM(#REF!)","v":{"$error":"#REF!"}},{"$f":"SUM(#REF!)","v":{"$error":"#REF!"}},{"$f":"SUM(#REF!)","v":{"$error":"#REF!"}},{"$f":"SUM(#REF!)","v":{"$error":"#REF!"}},{"$f":"SUM(#REF!)","v":{"$error":"#REF!"}},{"$f":"SUM(#REF!)","v":{"$error":"#REF!"}},{"$f":"SUM(#REF!)","v":{"$error":"#REF!"}},{"$f":"SUM(#REF!)","v":{"$error":"#REF!"}},{"$f":"SUM(#REF!)","v":{"$error":"#REF!"}},{"$f":"SUM(#REF!)","v":{"$error":"#REF!"}},{"$f":"SUM(#REF!)","v":{"$error":"#REF!"}},{"$f":"SUM(#REF!)","v":{"$error":"#REF!"}},{"$f":"SUM(#REF!)","v":{"$error":"#REF!"}},{"$f":"SUM(#REF!)","v":{"$error":"#REF!"}},{"$f":"SUM(#REF!)","v":{"$error":"#REF!"}},{"$f":"SUM(#REF!)","v":{"$error":"#REF!"}},{"$f":"SUM(#REF!)","v":{"$error":"#REF!"}},{"$f":"SUM(#REF!)","v":{"$error":"#REF!"}},{"$f":"SUM(#REF!)","v":{"$error":"#REF!"}},{"$f":"SUM(#REF!)","v":{"$error":"#REF!"}},{"$f":"SUM(#REF!)","v":{"$error":"#REF!"}},{"$f":"SUM(#REF!)","v":{"$error":"#REF!"}},{"$f":"SUM(#REF!)","v":{"$error":"#REF!"}},{"$f":"SUM(#REF!)","v":{"$error":"#REF!"}},{"$f":"SUM(#REF!)","v":{"$error":"#REF!"}},{"$f":"SUM(#REF!)","v":{"$error":"#REF!"}},{"$f":"SUM(#REF!)","v":{"$error":"#REF!"}},{"$f":"SUM(#REF!)","v":{"$error":"#REF!"}},{"$f":"SUM(#REF!)","v":{"$error":"#REF!"}},{"$f":"SUM(#REF!)","v":{"$error":"#REF!"}},{"$f":"SUM(#REF!)","v":{"$error":"#REF!"}},{"$f":"SUM(#REF!)","v":{"$error":"#REF!"}},{"$f":"SUM(#REF!)","v":{"$error":"#REF!"}},{"$f":"SUM(#REF!)","v":{"$error":"#REF!"}},{"$f":"SUM(#REF!)","v":{"$error":"#REF!"}},{"$f":"SUM(#REF!)","v":{"$error":"#REF!"}},{"$f":"SUM(#REF!)","v":{"$error":"#REF!"}},{"$f":"SUM(#REF!)","v":{"$error":"#REF!"}},{"$f":"SUM(#REF!)","v":{"$error":"#REF!"}},{"$f":"SUM(#REF!)","v":{"$error":"#REF!"}},{"$f":"SUM(#REF!)","v":{"$error":"#REF!"}},{"$f":"SUM(#REF!)","v":{"$error":"#REF!"}},{"$f":"SUM(#REF!)","v":{"$error":"#REF!"}},{"$f":"SUM(#REF!)","v":{"$error":"#REF!"}},{"$f":"SUM(#REF!)","v":{"$error":"#REF!"}},{"$f":"SUM(#REF!)","v":{"$error":"#REF!"}},{"$f":"SUM(#REF!)","v":{"$error":"#REF!"}},{"$f":"SUM(#REF!)","v":{"$error":"#REF!"}},{"$f":"SUM(#REF!)","v":{"$error":"#REF!"}},{"$f":"SUM(#REF!)","v":{"$error":"#REF!"}},{"$f":"SUM(#REF!)","v":{"$error":"#REF!"}},{"$f":"SUM(#REF!)","v":{"$error":"#REF!"}},{"$f":"SUM(#REF!)","v":{"$error":"#REF!"}},{"$f":"SUM(#REF!)","v":{"$error":"#REF!"}},{"$f":"SUM(#REF!)","v":{"$error":"#REF!"}},{"$f":"SUM(#REF!)","v":{"$error":"#REF!"}},{"$f":"SUM(#REF!)","v":{"$error":"#REF!"}},{"$f":"SUM(#REF!)","v":{"$error":"#REF!"}},{"$f":"SUM(#REF!)","v":{"$error":"#REF!"}},{"$f":"SUM(#REF!)","v":{"$error":"#REF!"}},{"$f":"SUM(#REF!)","v":{"$error":"#REF!"}},{"$f":"SUM(#REF!)","v":{"$error":"#REF!"}},{"$f":"SUM(#REF!)","v":{"$error":"#REF!"}},{"$f":"SUM(#REF!)","v":{"$error":"#REF!"}},{"$f":"SUM(#REF!)","v":{"$error":"#REF!"}},{"$f":"SUM(#REF!)","v":{"$error":"#REF!"}},{"$f":"SUM(#REF!)","v":{"$error":"#REF!"}},{"$f":"SUM(#REF!)","v":{"$error":"#REF!"}},{"$f":"SUM(#REF!)","v":{"$error":"#REF!"}},{"$f":"SUM(#REF!)","v":{"$error":"#REF!"}},{"$f":"SUM(#REF!)","v":{"$error":"#REF!"}},{"$f":"SUM(#REF!)","v":{"$error":"#REF!"}},{"$f":"SUM(#REF!)","v":{"$error":"#REF!"}},{"$f":"SUM(#REF!)","v":{"$error":"#REF!"}},{"$f":"SUM(#REF!)","v":{"$error":"#REF!"}},{"$f":"SUM(#REF!)","v":{"$error":"#REF!"}},{"$f":"SUM(#REF!)","v":{"$error":"#REF!"}},{"$f":"SUM(#REF!)","v":{"$error":"#REF!"}},{"$f":"SUM(#REF!)","v":{"$error":"#REF!"}},{"$f":"SUM(#REF!)","v":{"$error":"#REF!"}},{"$f":"SUM(#REF!)","v":{"$error":"#REF!"}},{"$f":"SUM(#REF!)","v":{"$error":"#REF!"}},{"$f":"SUM(#REF!)","v":{"$error":"#REF!"}},{"$f":"SUM(#REF!)","v":{"$error":"#REF!"}},{"$f":"SUM(#REF!)","v":{"$error":"#REF!"}},{"$f":"SUM(#REF!)","v":{"$error":"#REF!"}},{"$f":"SUM(#REF!)","v":{"$error":"#REF!"}},{"$f":"SUM(#REF!)","v":{"$error":"#REF!"}},{"$f":"SUM(#REF!)","v":{"$error":"#REF!"}},{"$f":"SUM(#REF!)","v":{"$error":"#REF!"}},{"$f":"SUM(#REF!)","v":{"$error":"#REF!"}},{"$f":"SUM(#REF!)","v":{"$error":"#REF!"}},{"$f":"SUM(#REF!)","v":{"$error":"#REF!"}},{"$f":"SUM(#REF!)","v":{"$error":"#REF!"}},{"$f":"SUM(#REF!)","v":{"$error":"#REF!"}},{"$f":"SUM(#REF!)","v":{"$error":"#REF!"}},{"$f":"SUM(#REF!)","v":{"$error":"#REF!"}},{"$f":"SUM(#REF!)","v":{"$error":"#REF!"}},{"$f":"SUM(#REF!)","v":{"$error":"#REF!"}},{"$f":"SUM(#REF!)","v":{"$error":"#REF!"}},{"$f":"SUM(#REF!)","v":{"$error":"#REF!"}},{"$f":"SUM(#REF!)","v":{"$error":"#REF!"}},{"$f":"SUM(#REF!)","v":{"$error":"#REF!"}},{"$f":"SUM(#REF!)","v":{"$error":"#REF!"}},{"$f":"SUM(#REF!)","v":{"$error":"#REF!"}},{"$f":"SUM(#REF!)","v":{"$error":"#REF!"}},{"$f":"SUM(#REF!)","v":{"$error":"#REF!"}},{"$f":"SUM(#REF!)","v":{"$error":"#REF!"}},{"$f":"SUM(#REF!)","v":{"$error":"#REF!"}},{"$f":"SUM(#REF!)","v":{"$error":"#REF!"}},{"$f":"SUM(#REF!)","v":{"$error":"#REF!"}},{"$f":"SUM(#REF!)","v":{"$error":"#REF!"}},{"$f":"SUM(#REF!)","v":{"$error":"#REF!"}},{"$f":"SUM(#REF!)","v":{"$error":"#REF!"}},{"$f":"SUM(#REF!)","v":{"$error":"#REF!"}},{"$f":"SUM(#REF!)","v":{"$error":"#REF!"}},{"$f":"SUM(#REF!)","v":{"$error":"#REF!"}},{"$f":"SUM(#REF!)","v":{"$error":"#REF!"}},{"$f":"SUM(#REF!)","v":{"$error":"#REF!"}},{"$f":"SUM(#REF!)","v":{"$error":"#REF!"}},{"$f":"SUM(#REF!)","v":{"$error":"#REF!"}},{"$f":"SUM(#REF!)","v":{"$error":"#REF!"}},{"$f":"SUM(#REF!)","v":{"$error":"#REF!"}},{"$f":"SUM(#REF!)","v":{"$error":"#REF!"}},{"$f":"SUM(#REF!)","v":{"$error":"#REF!"}},{"$f":"SUM(#REF!)","v":{"$error":"#REF!"}},{"$f":"SUM(#REF!)","v":{"$error":"#REF!"}},{"$f":"SUM(#REF!)","v":{"$error":"#REF!"}},{"$f":"SUM(#REF!)","v":{"$error":"#REF!"}},{"$f":"SUM(#REF!)","v":{"$error":"#REF!"}},{"$f":"SUM(#REF!)","v":{"$error":"#REF!"}},{"$f":"SUM(#REF!)","v":{"$error":"#REF!"}},{"$f":"SUM(#REF!)","v":{"$error":"#REF!"}},{"$f":"SUM(#REF!)","v":{"$error":"#REF!"}},{"$f":"SUM(#REF!)","v":{"$error":"#REF!"}},{"$f":"SUM(#REF!)","v":{"$error":"#REF!"}},{"$f":"SUM(#REF!)","v":{"$error":"#REF!"}},{"$f":"SUM(#REF!)","v":{"$error":"#REF!"}},{"$f":"SUM(#REF!)","v":{"$error":"#REF!"}},{"$f":"SUM(#REF!)","v":{"$error":"#REF!"}},{"$f":"SUM(#REF!)","v":{"$error":"#REF!"}},{"$f":"SUM(#REF!)","v":{"$error":"#REF!"}},{"$f":"SUM(#REF!)","v":{"$error":"#REF!"}},{"$f":"SUM(#REF!)","v":{"$error":"#REF!"}},{"$f":"SUM(#REF!)","v":{"$error":"#REF!"}},{"$f":"SUM(#REF!)","v":{"$error":"#REF!"}},{"$f":"SUM(#REF!)","v":{"$error":"#REF!"}},{"$f":"SUM(#REF!)","v":{"$error":"#REF!"}},{"$f":"SUM(#REF!)","v":{"$error":"#REF!"}},{"$f":"SUM(#REF!)","v":{"$error":"#REF!"}},{"$f":"SUM(#REF!)","v":{"$error":"#REF!"}},{"$f":"SUM(#REF!)","v":{"$error":"#REF!"}},{"$f":"SUM(#REF!)","v":{"$error":"#REF!"}},{"$f":"SUM(#REF!)","v":{"$error":"#REF!"}},{"$f":"SUM(#REF!)","v":{"$error":"#REF!"}},{"$f":"SUM(#REF!)","v":{"$error":"#REF!"}},{"$f":"SUM(#REF!)","v":{"$error":"#REF!"}},{"$f":"SUM(#REF!)","v":{"$error":"#REF!"}},{"$f":"SUM(#REF!)","v":{"$error":"#REF!"}},{"$f":"SUM(#REF!)","v":{"$error":"#REF!"}},{"$f":"SUM(#REF!)","v":{"$error":"#REF!"}},{"$f":"SUM(#REF!)","v":{"$error":"#REF!"}},{"$f":"SUM(#REF!)","v":{"$error":"#REF!"}},{"$f":"SUM(#REF!)","v":{"$error":"#REF!"}},{"$f":"SUM(#REF!)","v":{"$error":"#REF!"}},{"$f":"SUM(#REF!)","v":{"$error":"#REF!"}},{"$f":"SUM(#REF!)","v":{"$error":"#REF!"}},{"$f":"SUM(#REF!)","v":{"$error":"#REF!"}},{"$f":"SUM(#REF!)","v":{"$error":"#REF!"}},{"$f":"SUM(#REF!)","v":{"$error":"#REF!"}},{"$f":"SUM(#REF!)","v":{"$error":"#REF!"}},{"$f":"SUM(#REF!)","v":{"$error":"#REF!"}},{"$f":"SUM(#REF!)","v":{"$error":"#REF!"}},{"$f":"SUM(#REF!)","v":{"$error":"#REF!"}},{"$f":"SUM(#REF!)","v":{"$error":"#REF!"}},{"$f":"SUM(#REF!)","v":{"$error":"#REF!"}},{"$f":"SUM(#REF!)","v":{"$error":"#REF!"}},{"$f":"SUM(#REF!)","v":{"$error":"#REF!"}},{"$f":"SUM(#REF!)","v":{"$error":"#REF!"}},{"$f":"SUM(#REF!)","v":{"$error":"#REF!"}},{"$f":"SUM(#REF!)","v":{"$error":"#REF!"}},{"$f":"SUM(#REF!)","v":{"$error":"#REF!"}},{"$f":"SUM(#REF!)","v":{"$error":"#REF!"}},{"$f":"SUM(#REF!)","v":{"$error":"#REF!"}},{"$f":"SUM(#REF!)","v":{"$error":"#REF!"}},{"$f":"SUM(#REF!)","v":{"$error":"#REF!"}},{"$f":"SUM(#REF!)","v":{"$error":"#REF!"}},{"$f":"SUM(#REF!)","v":{"$error":"#REF!"}},{"$f":"SUM(#REF!)","v":{"$error":"#REF!"}},{"$f":"SUM(#REF!)","v":{"$error":"#REF!"}},{"$f":"SUM(#REF!)","v":{"$error":"#REF!"}},{"$f":"SUM(#REF!)","v":{"$error":"#REF!"}},{"$f":"SUM(#REF!)","v":{"$error":"#REF!"}},{"$f":"SUM(#REF!)","v":{"$error":"#REF!"}},{"$f":"SUM(#REF!)","v":{"$error":"#REF!"}},{"$f":"SUM(#REF!)","v":{"$error":"#REF!"}},{"$f":"SUM(#REF!)","v":{"$error":"#REF!"}},{"$f":"SUM(#REF!)","v":{"$error":"#REF!"}},{"$f":"SUM(#REF!)","v":{"$error":"#REF!"}},{"$f":"SUM(#REF!)","v":{"$error":"#REF!"}},{"$f":"SUM(#REF!)","v":{"$error":"#REF!"}},{"$f":"SUM(#REF!)","v":{"$error":"#REF!"}},{"$f":"SUM(#REF!)","v":{"$error":"#REF!"}},{"$f":"SUM(#REF!)","v":{"$error":"#REF!"}},{"$f":"SUM(#REF!)","v":{"$error":"#REF!"}},{"$f":"SUM(#REF!)","v":{"$error":"#REF!"}},{"$f":"SUM(#REF!)","v":{"$error":"#REF!"}},{"$f":"SUM(#REF!)","v":{"$error":"#REF!"}},{"$f":"SUM(#REF!)","v":{"$error":"#REF!"}},{"$f":"SUM(#REF!)","v":{"$error":"#REF!"}},{"$f":"SUM(#REF!)","v":{"$error":"#REF!"}},{"$f":"SUM(#REF!)","v":{"$error":"#REF!"}},{"$f":"SUM(#REF!)","v":{"$error":"#REF!"}},{"$f":"SUM(#REF!)","v":{"$error":"#REF!"}},{"$f":"SUM(#REF!)","v":{"$error":"#REF!"}},{"$f":"SUM(#REF!)","v":{"$error":"#REF!"}},{"$f":"SUM(#REF!)","v":{"$error":"#REF!"}},{"$f":"SUM(#REF!)","v":{"$error":"#REF!"}},{"$f":"SUM(#REF!)","v":{"$error":"#REF!"}},{"$f":"SUM(#REF!)","v":{"$error":"#REF!"}},{"$f":"SUM(#REF!)","v":{"$error":"#REF!"}},{"$f":"SUM(#REF!)","v":{"$error":"#REF!"}},{"$f":"SUM(#REF!)","v":{"$error":"#REF!"}},{"$f":"SUM(#REF!)","v":{"$error":"#REF!"}},{"$f":"SUM(#REF!)","v":{"$error":"#REF!"}},{"$f":"SUM(#REF!)","v":{"$error":"#REF!"}},{"$f":"SUM(#REF!)","v":{"$error":"#REF!"}},{"$f":"SUM(#REF!)","v":{"$error":"#REF!"}},{"$f":"SUM(#REF!)","v":{"$error":"#REF!"}},{"$f":"SUM(#REF!)","v":{"$error":"#REF!"}},{"$f":"SUM(#REF!)","v":{"$error":"#REF!"}},{"$f":"SUM(#REF!)","v":{"$error":"#REF!"}},{"$f":"SUM(#REF!)","v":{"$error":"#REF!"}},{"$f":"SUM(#REF!)","v":{"$error":"#REF!"}},{"$f":"SUM(#REF!)","v":{"$error":"#REF!"}},{"$f":"SUM(#REF!)","v":{"$error":"#REF!"}},{"$f":"SUM(#REF!)","v":{"$error":"#REF!"}},{"$f":"SUM(#REF!)","v":{"$error":"#REF!"}},{"$f":"SUM(#REF!)","v":{"$error":"#REF!"}},{"$f":"SUM(#REF!)","v":{"$error":"#REF!"}},{"$f":"SUM(#REF!)","v":{"$error":"#REF!"}},{"$f":"SUM(#REF!)","v":{"$error":"#REF!"}},{"$f":"SUM(#REF!)","v":{"$error":"#REF!"}},{"$f":"SUM(#REF!)","v":{"$error":"#REF!"}},{"$f":"SUM(#REF!)","v":{"$error":"#REF!"}},{"$f":"SUM(#REF!)","v":{"$error":"#REF!"}},{"$f":"SUM(#REF!)","v":{"$error":"#REF!"}},{"$f":"SUM(#REF!)","v":{"$error":"#REF!"}},{"$f":"SUM(#REF!)","v":{"$error":"#REF!"}},{"$f":"SUM(#REF!)","v":{"$error":"#REF!"}},{"$f":"SUM(#REF!)","v":{"$error":"#REF!"}},{"$f":"SUM(#REF!)","v":{"$error":"#REF!"}},{"$f":"SUM(#REF!)","v":{"$error":"#REF!"}},{"$f":"SUM(#REF!)","v":{"$error":"#REF!"}},{"$f":"SUM(#REF!)","v":{"$error":"#REF!"}},{"$f":"SUM(#REF!)","v":{"$error":"#REF!"}},{"$f":"SUM(#REF!)","v":{"$error":"#REF!"}},{"$f":"SUM(#REF!)","v":{"$error":"#REF!"}},{"$f":"SUM(#REF!)","v":{"$error":"#REF!"}},{"$f":"SUM(#REF!)","v":{"$error":"#REF!"}},{"$f":"SUM(#REF!)","v":{"$error":"#REF!"}},{"$f":"SUM(#REF!)","v":{"$error":"#REF!"}},{"$f":"SUM(#REF!)","v":{"$error":"#REF!"}},{"$f":"SUM(#REF!)","v":{"$error":"#REF!"}},{"$f":"SUM(#REF!)","v":{"$error":"#REF!"}},{"$f":"SUM(#REF!)","v":{"$error":"#REF!"}},{"$f":"SUM(#REF!)","v":{"$error":"#REF!"}},{"$f":"SUM(#REF!)","v":{"$error":"#REF!"}},{"$f":"SUM(#REF!)","v":{"$error":"#REF!"}},{"$f":"SUM(#REF!)","v":{"$error":"#REF!"}},{"$f":"SUM(#REF!)","v":{"$error":"#REF!"}},{"$f":"SUM(#REF!)","v":{"$error":"#REF!"}},{"$f":"SUM(#REF!)","v":{"$error":"#REF!"}},{"$f":"SUM(#REF!)","v":{"$error":"#REF!"}},{"$f":"SUM(#REF!)","v":{"$error":"#REF!"}},{"$f":"SUM(#REF!)","v":{"$error":"#REF!"}},{"$f":"SUM(#REF!)","v":{"$error":"#REF!"}},{"$f":"SUM(#REF!)","v":{"$error":"#REF!"}},{"$f":"SUM(#REF!)","v":{"$error":"#REF!"}},{"$f":"SUM(#REF!)","v":{"$error":"#REF!"}},{"$f":"SUM(#REF!)","v":{"$error":"#REF!"}},{"$f":"SUM(#REF!)","v":{"$error":"#REF!"}},{"$f":"SUM(#REF!)","v":{"$error":"#REF!"}},{"$f":"SUM(#REF!)","v":{"$error":"#REF!"}},{"$f":"SUM(#REF!)","v":{"$error":"#REF!"}},{"$f":"SUM(#REF!)","v":{"$error":"#REF!"}},{"$f":"SUM(#REF!)","v":{"$error":"#REF!"}},{"$f":"SUM(#REF!)","v":{"$error":"#REF!"}},{"$f":"SUM(#REF!)","v":{"$error":"#REF!"}},{"$f":"SUM(#REF!)","v":{"$error":"#REF!"}},{"$f":"SUM(#REF!)","v":{"$error":"#REF!"}},{"$f":"SUM(#REF!)","v":{"$error":"#REF!"}},{"$f":"SUM(#REF!)","v":{"$error":"#REF!"}},{"$f":"SUM(#REF!)","v":{"$error":"#REF!"}},{"$f":"SUM(#REF!)","v":{"$error":"#REF!"}},{"$f":"SUM(#REF!)","v":{"$error":"#REF!"}},{"$f":"SUM(#REF!)","v":{"$error":"#REF!"}},{"$f":"SUM(#REF!)","v":{"$error":"#REF!"}},{"$f":"SUM(#REF!)","v":{"$error":"#REF!"}},{"$f":"SUM(#REF!)","v":{"$error":"#REF!"}},{"$f":"SUM(#REF!)","v":{"$error":"#REF!"}},{"$f":"SUM(#REF!)","v":{"$error":"#REF!"}},{"$f":"SUM(#REF!)","v":{"$error":"#REF!"}},{"$f":"SUM(#REF!)","v":{"$error":"#REF!"}},{"$f":"SUM(#REF!)","v":{"$error":"#REF!"}},{"$f":"SUM(#REF!)","v":{"$error":"#REF!"}},{"$f":"SUM(#REF!)","v":{"$error":"#REF!"}},{"$f":"SUM(#REF!)","v":{"$error":"#REF!"}},{"$f":"SUM(#REF!)","v":{"$error":"#REF!"}},{"$f":"SUM(#REF!)","v":{"$error":"#REF!"}},{"$f":"SUM(#REF!)","v":{"$error":"#REF!"}},{"$f":"SUM(#REF!)","v":{"$error":"#REF!"}},{"$f":"SUM(#REF!)","v":{"$error":"#REF!"}},{"$f":"SUM(#REF!)","v":{"$error":"#REF!"}},{"$f":"SUM(#REF!)","v":{"$error":"#REF!"}},{"$f":"SUM(#REF!)","v":{"$error":"#REF!"}},{"$f":"SUM(#REF!)","v":{"$error":"#REF!"}},{"$f":"SUM(#REF!)","v":{"$error":"#REF!"}},{"$f":"SUM(#REF!)","v":{"$error":"#REF!"}},{"$f":"SUM(#REF!)","v":{"$error":"#REF!"}},{"$f":"SUM(#REF!)","v":{"$error":"#REF!"}},{"$f":"SUM(#REF!)","v":{"$error":"#REF!"}},{"$f":"SUM(#REF!)","v":{"$error":"#REF!"}},{"$f":"SUM(#REF!)","v":{"$error":"#REF!"}},{"$f":"SUM(#REF!)","v":{"$error":"#REF!"}},{"$f":"SUM(#REF!)","v":{"$error":"#REF!"}},{"$f":"SUM(#REF!)","v":{"$error":"#REF!"}},{"$f":"SUM(#REF!)","v":{"$error":"#REF!"}},{"$f":"SUM(#REF!)","v":{"$error":"#REF!"}},{"$f":"SUM(#REF!)","v":{"$error":"#REF!"}},{"$f":"SUM(#REF!)","v":{"$error":"#REF!"}},{"$f":"SUM(#REF!)","v":{"$error":"#REF!"}},{"$f":"SUM(#REF!)","v":{"$error":"#REF!"}},{"$f":"SUM(#REF!)","v":{"$error":"#REF!"}},{"$f":"SUM(#REF!)","v":{"$error":"#REF!"}},{"$f":"SUM(#REF!)","v":{"$error":"#REF!"}},{"$f":"SUM(#REF!)","v":{"$error":"#REF!"}},{"$f":"SUM(#REF!)","v":{"$error":"#REF!"}},{"$f":"SUM(#REF!)","v":{"$error":"#REF!"}},{"$f":"SUM(#REF!)","v":{"$error":"#REF!"}},{"$f":"SUM(#REF!)","v":{"$error":"#REF!"}},{"$f":"SUM(#REF!)","v":{"$error":"#REF!"}},{"$f":"SUM(#REF!)","v":{"$error":"#REF!"}},{"$f":"SUM(#REF!)","v":{"$error":"#REF!"}},{"$f":"SUM(#REF!)","v":{"$error":"#REF!"}},{"$f":"SUM(#REF!)","v":{"$error":"#REF!"}},{"$f":"SUM(#REF!)","v":{"$error":"#REF!"}},{"$f":"SUM(#REF!)","v":{"$error":"#REF!"}},{"$f":"SUM(#REF!)","v":{"$error":"#REF!"}},{"$f":"SUM(#REF!)","v":{"$error":"#REF!"}},{"$f":"SUM(#REF!)","v":{"$error":"#REF!"}},{"$f":"SUM(#REF!)","v":{"$error":"#REF!"}},{"$f":"SUM(#REF!)","v":{"$error":"#REF!"}},{"$f":"SUM(#REF!)","v":{"$error":"#REF!"}},{"$f":"SUM(#REF!)","v":{"$error":"#REF!"}},{"$f":"SUM(#REF!)","v":{"$error":"#REF!"}},{"$f":"SUM(#REF!)","v":{"$error":"#REF!"}},{"$f":"SUM(#REF!)","v":{"$error":"#REF!"}},{"$f":"SUM(#REF!)","v":{"$error":"#REF!"}},{"$f":"SUM(#REF!)","v":{"$error":"#REF!"}},{"$f":"SUM(#REF!)","v":{"$error":"#REF!"}},{"$f":"SUM(#REF!)","v":{"$error":"#REF!"}},{"$f":"SUM(#REF!)","v":{"$error":"#REF!"}},{"$f":"SUM(#REF!)","v":{"$error":"#REF!"}},{"$f":"SUM(#REF!)","v":{"$error":"#REF!"}},{"$f":"SUM(#REF!)","v":{"$error":"#REF!"}},{"$f":"SUM(#REF!)","v":{"$error":"#REF!"}},{"$f":"SUM(#REF!)","v":{"$error":"#REF!"}},{"$f":"SUM(#REF!)","v":{"$error":"#REF!"}},{"$f":"SUM(#REF!)","v":{"$error":"#REF!"}},{"$f":"SUM(#REF!)","v":{"$error":"#REF!"}},{"$f":"SUM(#REF!)","v":{"$error":"#REF!"}},{"$f":"SUM(#REF!)","v":{"$error":"#REF!"}},{"$f":"SUM(#REF!)","v":{"$error":"#REF!"}},{"$f":"SUM(#REF!)","v":{"$error":"#REF!"}},{"$f":"SUM(#REF!)","v":{"$error":"#REF!"}},{"$f":"SUM(#REF!)","v":{"$error":"#REF!"}},{"$f":"SUM(#REF!)","v":{"$error":"#REF!"}},{"$f":"SUM(#REF!)","v":{"$error":"#REF!"}},{"$f":"SUM(#REF!)","v":{"$error":"#REF!"}},{"$f":"SUM(#REF!)","v":{"$error":"#REF!"}},{"$f":"SUM(#REF!)","v":{"$error":"#REF!"}},{"$f":"SUM(#REF!)","v":{"$error":"#REF!"}},{"$f":"SUM(#REF!)","v":{"$error":"#REF!"}},{"$f":"SUM(#REF!)","v":{"$error":"#REF!"}},{"$f":"SUM(#REF!)","v":{"$error":"#REF!"}},{"$f":"SUM(#REF!)","v":{"$error":"#REF!"}},{"$f":"SUM(#REF!)","v":{"$error":"#REF!"}},{"$f":"SUM(#REF!)","v":{"$error":"#REF!"}},{"$f":"SUM(#REF!)","v":{"$error":"#REF!"}},{"$f":"SUM(#REF!)","v":{"$error":"#REF!"}},{"$f":"SUM(#REF!)","v":{"$error":"#REF!"}},{"$f":"SUM(#REF!)","v":{"$error":"#REF!"}},{"$f":"SUM(#REF!)","v":{"$error":"#REF!"}},{"$f":"SUM(#REF!)","v":{"$error":"#REF!"}},{"$f":"SUM(#REF!)","v":{"$error":"#REF!"}},{"$f":"SUM(#REF!)","v":{"$error":"#REF!"}},{"$f":"SUM(#REF!)","v":{"$error":"#REF!"}},{"$f":"SUM(#REF!)","v":{"$error":"#REF!"}},{"$f":"SUM(#REF!)","v":{"$error":"#REF!"}},{"$f":"SUM(#REF!)","v":{"$error":"#REF!"}},{"$f":"SUM(#REF!)","v":{"$error":"#REF!"}},{"$f":"SUM(#REF!)","v":{"$error":"#REF!"}},{"$f":"SUM(#REF!)","v":{"$error":"#REF!"}},{"$f":"SUM(#REF!)","v":{"$error":"#REF!"}},{"$f":"SUM(#REF!)","v":{"$error":"#REF!"}},{"$f":"SUM(#REF!)","v":{"$error":"#REF!"}},{"$f":"SUM(#REF!)","v":{"$error":"#REF!"}},{"$f":"SUM(#REF!)","v":{"$error":"#REF!"}},{"$f":"SUM(#REF!)","v":{"$error":"#REF!"}},{"$f":"SUM(#REF!)","v":{"$error":"#REF!"}},{"$f":"SUM(#REF!)","v":{"$error":"#REF!"}},{"$f":"SUM(#REF!)","v":{"$error":"#REF!"}},{"$f":"SUM(#REF!)","v":{"$error":"#REF!"}},{"$f":"SUM(#REF!)","v":{"$error":"#REF!"}},{"$f":"SUM(#REF!)","v":{"$error":"#REF!"}},{"$f":"SUM(#REF!)","v":{"$error":"#REF!"}},{"$f":"SUM(#REF!)","v":{"$error":"#REF!"}},{"$f":"SUM(#REF!)","v":{"$error":"#REF!"}},{"$f":"SUM(#REF!)","v":{"$error":"#REF!"}},{"$f":"SUM(#REF!)","v":{"$error":"#REF!"}},{"$f":"SUM(#REF!)","v":{"$error":"#REF!"}},{"$f":"SUM(#REF!)","v":{"$error":"#REF!"}},{"$f":"SUM(#REF!)","v":{"$error":"#REF!"}},{"$f":"SUM(#REF!)","v":{"$error":"#REF!"}},{"$f":"SUM(#REF!)","v":{"$error":"#REF!"}},{"$f":"SUM(#REF!)","v":{"$error":"#REF!"}},{"$f":"SUM(#REF!)","v":{"$error":"#REF!"}},{"$f":"SUM(#REF!)","v":{"$error":"#REF!"}},{"$f":"SUM(#REF!)","v":{"$error":"#REF!"}},{"$f":"SUM(#REF!)","v":{"$error":"#REF!"}},{"$f":"SUM(#REF!)","v":{"$error":"#REF!"}},{"$f":"SUM(#REF!)","v":{"$error":"#REF!"}},{"$f":"SUM(#REF!)","v":{"$error":"#REF!"}},{"$f":"SUM(#REF!)","v":{"$error":"#REF!"}},{"$f":"SUM(#REF!)","v":{"$error":"#REF!"}},{"$f":"SUM(#REF!)","v":{"$error":"#REF!"}},{"$f":"SUM(#REF!)","v":{"$error":"#REF!"}},{"$f":"SUM(#REF!)","v":{"$error":"#REF!"}},{"$f":"SUM(#REF!)","v":{"$error":"#REF!"}},{"$f":"SUM(#REF!)","v":{"$error":"#REF!"}},{"$f":"SUM(#REF!)","v":{"$error":"#REF!"}},{"$f":"SUM(#REF!)","v":{"$error":"#REF!"}},{"$f":"SUM(#REF!)","v":{"$error":"#REF!"}},{"$f":"SUM(#REF!)","v":{"$error":"#REF!"}},{"$f":"SUM(#REF!)","v":{"$error":"#REF!"}},{"$f":"SUM(#REF!)","v":{"$error":"#REF!"}},{"$f":"SUM(#REF!)","v":{"$error":"#REF!"}},{"$f":"SUM(#REF!)","v":{"$error":"#REF!"}},{"$f":"SUM(#REF!)","v":{"$error":"#REF!"}},{"$f":"SUM(#REF!)","v":{"$error":"#REF!"}},{"$f":"SUM(#REF!)","v":{"$error":"#REF!"}},{"$f":"SUM(#REF!)","v":{"$error":"#REF!"}},{"$f":"SUM(#REF!)","v":{"$error":"#REF!"}},{"$f":"SUM(#REF!)","v":{"$error":"#REF!"}},{"$f":"SUM(#REF!)","v":{"$error":"#REF!"}},{"$f":"SUM(#REF!)","v":{"$error":"#REF!"}},{"$f":"SUM(#REF!)","v":{"$error":"#REF!"}},{"$f":"SUM(#REF!)","v":{"$error":"#REF!"}},{"$f":"SUM(#REF!)","v":{"$error":"#REF!"}},{"$f":"SUM(#REF!)","v":{"$error":"#REF!"}},{"$f":"SUM(#REF!)","v":{"$error":"#REF!"}},{"$f":"SUM(#REF!)","v":{"$error":"#REF!"}},{"$f":"SUM(#REF!)","v":{"$error":"#REF!"}},{"$f":"SUM(#REF!)","v":{"$error":"#REF!"}},{"$f":"SUM(#REF!)","v":{"$error":"#REF!"}},{"$f":"SUM(#REF!)","v":{"$error":"#REF!"}},{"$f":"SUM(#REF!)","v":{"$error":"#REF!"}},{"$f":"SUM(#REF!)","v":{"$error":"#REF!"}},{"$f":"SUM(#REF!)","v":{"$error":"#REF!"}},{"$f":"SUM(#REF!)","v":{"$error":"#REF!"}},{"$f":"SUM(#REF!)","v":{"$error":"#REF!"}},{"$f":"SUM(#REF!)","v":{"$error":"#REF!"}},{"$f":"SUM(#REF!)","v":{"$error":"#REF!"}},{"$f":"SUM(#REF!)","v":{"$error":"#REF!"}},{"$f":"SUM(#REF!)","v":{"$error":"#REF!"}},{"$f":"SUM(#REF!)","v":{"$error":"#REF!"}},{"$f":"SUM(#REF!)","v":{"$error":"#REF!"}},{"$f":"SUM(#REF!)","v":{"$error":"#REF!"}},{"$f":"SUM(#REF!)","v":{"$error":"#REF!"}},{"$f":"SUM(#REF!)","v":{"$error":"#REF!"}},{"$f":"SUM(#REF!)","v":{"$error":"#REF!"}},{"$f":"SUM(#REF!)","v":{"$error":"#REF!"}},{"$f":"SUM(#REF!)","v":{"$error":"#REF!"}},{"$f":"SUM(#REF!)","v":{"$error":"#REF!"}},{"$f":"SUM(#REF!)","v":{"$error":"#REF!"}},{"$f":"SUM(#REF!)","v":{"$error":"#REF!"}},{"$f":"SUM(#REF!)","v":{"$error":"#REF!"}},{"$f":"SUM(#REF!)","v":{"$error":"#REF!"}},{"$f":"SUM(#REF!)","v":{"$error":"#REF!"}},{"$f":"SUM(#REF!)","v":{"$error":"#REF!"}},{"$f":"SUM(#REF!)","v":{"$error":"#REF!"}},{"$f":"SUM(#REF!)","v":{"$error":"#REF!"}},{"$f":"SUM(#REF!)","v":{"$error":"#REF!"}},{"$f":"SUM(#REF!)","v":{"$error":"#REF!"}},{"$f":"SUM(#REF!)","v":{"$error":"#REF!"}},{"$f":"SUM(#REF!)","v":{"$error":"#REF!"}},{"$f":"SUM(#REF!)","v":{"$error":"#REF!"}},{"$f":"SUM(#REF!)","v":{"$error":"#REF!"}},{"$f":"SUM(#REF!)","v":{"$error":"#REF!"}},{"$f":"SUM(#REF!)","v":{"$error":"#REF!"}},{"$f":"SUM(#REF!)","v":{"$error":"#REF!"}},{"$f":"SUM(#REF!)","v":{"$error":"#REF!"}},{"$f":"SUM(#REF!)","v":{"$error":"#REF!"}},{"$f":"SUM(#REF!)","v":{"$error":"#REF!"}},{"$f":"SUM(#REF!)","v":{"$error":"#REF!"}},{"$f":"SUM(#REF!)","v":{"$error":"#REF!"}},{"$f":"SUM(#REF!)","v":{"$error":"#REF!"}},{"$f":"SUM(#REF!)","v":{"$error":"#REF!"}},{"$f":"SUM(#REF!)","v":{"$error":"#REF!"}},{"$f":"SUM(#REF!)","v":{"$error":"#REF!"}},{"$f":"SUM(#REF!)","v":{"$error":"#REF!"}},{"$f":"SUM(#REF!)","v":{"$error":"#REF!"}},{"$f":"SUM(#REF!)","v":{"$error":"#REF!"}},{"$f":"SUM(#REF!)","v":{"$error":"#REF!"}},{"$f":"SUM(#REF!)","v":{"$error":"#REF!"}},{"$f":"SUM(#REF!)","v":{"$error":"#REF!"}},{"$f":"SUM(#REF!)","v":{"$error":"#REF!"}},{"$f":"SUM(#REF!)","v":{"$error":"#REF!"}},{"$f":"SUM(#REF!)","v":{"$error":"#REF!"}},{"$f":"SUM(#REF!)","v":{"$error":"#REF!"}},{"$f":"SUM(#REF!)","v":{"$error":"#REF!"}},{"$f":"SUM(#REF!)","v":{"$error":"#REF!"}},{"$f":"SUM(#REF!)","v":{"$error":"#REF!"}},{"$f":"SUM(#REF!)","v":{"$error":"#REF!"}},{"$f":"SUM(#REF!)","v":{"$error":"#REF!"}},{"$f":"SUM(#REF!)","v":{"$error":"#REF!"}},{"$f":"SUM(#REF!)","v":{"$error":"#REF!"}},{"$f":"SUM(#REF!)","v":{"$error":"#REF!"}},{"$f":"SUM(#REF!)","v":{"$error":"#REF!"}},{"$f":"SUM(#REF!)","v":{"$error":"#REF!"}},{"$f":"SUM(#REF!)","v":{"$error":"#REF!"}},{"$f":"SUM(#REF!)","v":{"$error":"#REF!"}},{"$f":"SUM(#REF!)","v":{"$error":"#REF!"}},{"$f":"SUM(#REF!)","v":{"$error":"#REF!"}},{"$f":"SUM(#REF!)","v":{"$error":"#REF!"}},{"$f":"SUM(#REF!)","v":{"$error":"#REF!"}},{"$f":"SUM(#REF!)","v":{"$error":"#REF!"}},{"$f":"SUM(#REF!)","v":{"$error":"#REF!"}},{"$f":"SUM(#REF!)","v":{"$error":"#REF!"}},{"$f":"SUM(#REF!)","v":{"$error":"#REF!"}},{"$f":"SUM(#REF!)","v":{"$error":"#REF!"}},{"$f":"SUM(#REF!)","v":{"$error":"#REF!"}},{"$f":"SUM(#REF!)","v":{"$error":"#REF!"}},{"$f":"SUM(#REF!)","v":{"$error":"#REF!"}},{"$f":"SUM(#REF!)","v":{"$error":"#REF!"}},{"$f":"SUM(#REF!)","v":{"$error":"#REF!"}},{"$f":"SUM(#REF!)","v":{"$error":"#REF!"}},{"$f":"SUM(#REF!)","v":{"$error":"#REF!"}},{"$f":"SUM(#REF!)","v":{"$error":"#REF!"}},{"$f":"SUM(#REF!)","v":{"$error":"#REF!"}},{"$f":"SUM(#REF!)","v":{"$error":"#REF!"}},{"$f":"SUM(#REF!)","v":{"$error":"#REF!"}},{"$f":"SUM(#REF!)","v":{"$error":"#REF!"}},{"$f":"SUM(#REF!)","v":{"$error":"#REF!"}},{"$f":"SUM(#REF!)","v":{"$error":"#REF!"}},{"$f":"SUM(#REF!)","v":{"$error":"#REF!"}},{"$f":"SUM(#REF!)","v":{"$error":"#REF!"}},{"$f":"SUM(#REF!)","v":{"$error":"#REF!"}},{"$f":"SUM(#REF!)","v":{"$error":"#REF!"}},{"$f":"SUM(#REF!)","v":{"$error":"#REF!"}},{"$f":"SUM(#REF!)","v":{"$error":"#REF!"}},{"$f":"SUM(#REF!)","v":{"$error":"#REF!"}},{"$f":"SUM(#REF!)","v":{"$error":"#REF!"}},{"$f":"SUM(#REF!)","v":{"$error":"#REF!"}},{"$f":"SUM(#REF!)","v":{"$error":"#REF!"}},{"$f":"SUM(#REF!)","v":{"$error":"#REF!"}},{"$f":"SUM(#REF!)","v":{"$error":"#REF!"}},{"$f":"SUM(#REF!)","v":{"$error":"#REF!"}},{"$f":"SUM(#REF!)","v":{"$error":"#REF!"}},{"$f":"SUM(#REF!)","v":{"$error":"#REF!"}},{"$f":"SUM(#REF!)","v":{"$error":"#REF!"}},{"$f":"SUM(#REF!)","v":{"$error":"#REF!"}},{"$f":"SUM(#REF!)","v":{"$error":"#REF!"}},{"$f":"SUM(#REF!)","v":{"$error":"#REF!"}},{"$f":"SUM(#REF!)","v":{"$error":"#REF!"}},{"$f":"SUM(#REF!)","v":{"$error":"#REF!"}},{"$f":"SUM(#REF!)","v":{"$error":"#REF!"}},{"$f":"SUM(#REF!)","v":{"$error":"#REF!"}},{"$f":"SUM(#REF!)","v":{"$error":"#REF!"}},{"$f":"SUM(#REF!)","v":{"$error":"#REF!"}},{"$f":"SUM(#REF!)","v":{"$error":"#REF!"}},{"$f":"SUM(#REF!)","v":{"$error":"#REF!"}},{"$f":"SUM(#REF!)","v":{"$error":"#REF!"}},{"$f":"SUM(#REF!)","v":{"$error":"#REF!"}},{"$f":"SUM(#REF!)","v":{"$error":"#REF!"}},{"$f":"SUM(#REF!)","v":{"$error":"#REF!"}},{"$f":"SUM(#REF!)","v":{"$error":"#REF!"}},{"$f":"SUM(#REF!)","v":{"$error":"#REF!"}},{"$f":"SUM(#REF!)","v":{"$error":"#REF!"}},{"$f":"SUM(#REF!)","v":{"$error":"#REF!"}},{"$f":"SUM(#REF!)","v":{"$error":"#REF!"}},{"$f":"SUM(#REF!)","v":{"$error":"#REF!"}},{"$f":"SUM(#REF!)","v":{"$error":"#REF!"}},{"$f":"SUM(#REF!)","v":{"$error":"#REF!"}},{"$f":"SUM(#REF!)","v":{"$error":"#REF!"}},{"$f":"SUM(#REF!)","v":{"$error":"#REF!"}},{"$f":"SUM(#REF!)","v":{"$error":"#REF!"}},{"$f":"SUM(#REF!)","v":{"$error":"#REF!"}},{"$f":"SUM(#REF!)","v":{"$error":"#REF!"}},{"$f":"SUM(#REF!)","v":{"$error":"#REF!"}},{"$f":"SUM(#REF!)","v":{"$error":"#REF!"}},{"$f":"SUM(#REF!)","v":{"$error":"#REF!"}},{"$f":"SUM(#REF!)","v":{"$error":"#REF!"}},{"$f":"SUM(#REF!)","v":{"$error":"#REF!"}},{"$f":"SUM(#REF!)","v":{"$error":"#REF!"}},{"$f":"SUM(#REF!)","v":{"$error":"#REF!"}},{"$f":"SUM(#REF!)","v":{"$error":"#REF!"}},{"$f":"SUM(#REF!)","v":{"$error":"#REF!"}},{"$f":"SUM(#REF!)","v":{"$error":"#REF!"}},{"$f":"SUM(#REF!)","v":{"$error":"#REF!"}},{"$f":"SUM(#REF!)","v":{"$error":"#REF!"}},{"$f":"SUM(#REF!)","v":{"$error":"#REF!"}},{"$f":"SUM(#REF!)","v":{"$error":"#REF!"}},{"$f":"SUM(#REF!)","v":{"$error":"#REF!"}},{"$f":"SUM(#REF!)","v":{"$error":"#REF!"}},{"$f":"SUM(#REF!)","v":{"$error":"#REF!"}},{"$f":"SUM(#REF!)","v":{"$error":"#REF!"}},{"$f":"SUM(#REF!)","v":{"$error":"#REF!"}},{"$f":"SUM(#REF!)","v":{"$error":"#REF!"}},{"$f":"SUM(#REF!)","v":{"$error":"#REF!"}},{"$f":"SUM(#REF!)","v":{"$error":"#REF!"}},{"$f":"SUM(#REF!)","v":{"$error":"#REF!"}},{"$f":"SUM(#REF!)","v":{"$error":"#REF!"}},{"$f":"SUM(#REF!)","v":{"$error":"#REF!"}},{"$f":"SUM(#REF!)","v":{"$error":"#REF!"}},{"$f":"SUM(#REF!)","v":{"$error":"#REF!"}},{"$f":"SUM(#REF!)","v":{"$error":"#REF!"}},{"$f":"SUM(#REF!)","v":{"$error":"#REF!"}},{"$f":"SUM(#REF!)","v":{"$error":"#REF!"}},{"$f":"SUM(#REF!)","v":{"$error":"#REF!"}},{"$f":"SUM(#REF!)","v":{"$error":"#REF!"}},{"$f":"SUM(#REF!)","v":{"$error":"#REF!"}},{"$f":"SUM(#REF!)","v":{"$error":"#REF!"}},{"$f":"SUM(#REF!)","v":{"$error":"#REF!"}},{"$f":"SUM(#REF!)","v":{"$error":"#REF!"}},{"$f":"SUM(#REF!)","v":{"$error":"#REF!"}},{"$f":"SUM(#REF!)","v":{"$error":"#REF!"}},{"$f":"SUM(#REF!)","v":{"$error":"#REF!"}},{"$f":"SUM(#REF!)","v":{"$error":"#REF!"}},{"$f":"SUM(#REF!)","v":{"$error":"#REF!"}},{"$f":"SUM(#REF!)","v":{"$error":"#REF!"}},{"$f":"SUM(#REF!)","v":{"$error":"#REF!"}},{"$f":"SUM(#REF!)","v":{"$error":"#REF!"}},{"$f":"SUM(#REF!)","v":{"$error":"#REF!"}},{"$f":"SUM(#REF!)","v":{"$error":"#REF!"}},{"$f":"SUM(#REF!)","v":{"$error":"#REF!"}},{"$f":"SUM(#REF!)","v":{"$error":"#REF!"}},{"$f":"SUM(#REF!)","v":{"$error":"#REF!"}},{"$f":"SUM(#REF!)","v":{"$error":"#REF!"}},{"$f":"SUM(#REF!)","v":{"$error":"#REF!"}},{"$f":"SUM(#REF!)","v":{"$error":"#REF!"}},{"$f":"SUM(#REF!)","v":{"$error":"#REF!"}},{"$f":"SUM(#REF!)","v":{"$error":"#REF!"}},{"$f":"SUM(#REF!)","v":{"$error":"#REF!"}},{"$f":"SUM(#REF!)","v":{"$error":"#REF!"}},{"$f":"SUM(#REF!)","v":{"$error":"#REF!"}},{"$f":"SUM(#REF!)","v":{"$error":"#REF!"}},{"$f":"SUM(#REF!)","v":{"$error":"#REF!"}},{"$f":"SUM(#REF!)","v":{"$error":"#REF!"}},{"$f":"SUM(#REF!)","v":{"$error":"#REF!"}},{"$f":"SUM(#REF!)","v":{"$error":"#REF!"}},{"$f":"SUM(#REF!)","v":{"$error":"#REF!"}},{"$f":"SUM(#REF!)","v":{"$error":"#REF!"}},{"$f":"SUM(#REF!)","v":{"$error":"#REF!"}},{"$f":"SUM(#REF!)","v":{"$error":"#REF!"}},{"$f":"SUM(#REF!)","v":{"$error":"#REF!"}},{"$f":"SUM(#REF!)","v":{"$error":"#REF!"}},{"$f":"SUM(#REF!)","v":{"$error":"#REF!"}},{"$f":"SUM(#REF!)","v":{"$error":"#REF!"}},{"$f":"SUM(#REF!)","v":{"$error":"#REF!"}},{"$f":"SUM(#REF!)","v":{"$error":"#REF!"}},{"$f":"SUM(#REF!)","v":{"$error":"#REF!"}},{"$f":"SUM(#REF!)","v":{"$error":"#REF!"}},{"$f":"SUM(#REF!)","v":{"$error":"#REF!"}},{"$f":"SUM(#REF!)","v":{"$error":"#REF!"}},{"$f":"SUM(#REF!)","v":{"$error":"#REF!"}},{"$f":"SUM(#REF!)","v":{"$error":"#REF!"}},{"$f":"SUM(#REF!)","v":{"$error":"#REF!"}},{"$f":"SUM(#REF!)","v":{"$error":"#REF!"}},{"$f":"SUM(#REF!)","v":{"$error":"#REF!"}},{"$f":"SUM(#REF!)","v":{"$error":"#REF!"}},{"$f":"SUM(#REF!)","v":{"$error":"#REF!"}},{"$f":"SUM(#REF!)","v":{"$error":"#REF!"}},{"$f":"SUM(#REF!)","v":{"$error":"#REF!"}},{"$f":"SUM(#REF!)","v":{"$error":"#REF!"}},{"$f":"SUM(#REF!)","v":{"$error":"#REF!"}},{"$f":"SUM(#REF!)","v":{"$error":"#REF!"}},{"$f":"SUM(#REF!)","v":{"$error":"#REF!"}},{"$f":"SUM(#REF!)","v":{"$error":"#REF!"}},{"$f":"SUM(#REF!)","v":{"$error":"#REF!"}},{"$f":"SUM(#REF!)","v":{"$error":"#REF!"}},{"$f":"SUM(#REF!)","v":{"$error":"#REF!"}},{"$f":"SUM(#REF!)","v":{"$error":"#REF!"}},{"$f":"SUM(#REF!)","v":{"$error":"#REF!"}},{"$f":"SUM(#REF!)","v":{"$error":"#REF!"}},{"$f":"SUM(#REF!)","v":{"$error":"#REF!"}},{"$f":"SUM(#REF!)","v":{"$error":"#REF!"}},{"$f":"SUM(#REF!)","v":{"$error":"#REF!"}},{"$f":"SUM(#REF!)","v":{"$error":"#REF!"}},{"$f":"SUM(#REF!)","v":{"$error":"#REF!"}},{"$f":"SUM(#REF!)","v":{"$error":"#REF!"}},{"$f":"SUM(#REF!)","v":{"$error":"#REF!"}},{"$f":"SUM(#REF!)","v":{"$error":"#REF!"}},{"$f":"SUM(#REF!)","v":{"$error":"#REF!"}},{"$f":"SUM(#REF!)","v":{"$error":"#REF!"}},{"$f":"SUM(#REF!)","v":{"$error":"#REF!"}},{"$f":"SUM(#REF!)","v":{"$error":"#REF!"}},{"$f":"SUM(#REF!)","v":{"$error":"#REF!"}},{"$f":"SUM(#REF!)","v":{"$error":"#REF!"}},{"$f":"SUM(#REF!)","v":{"$error":"#REF!"}},{"$f":"SUM(#REF!)","v":{"$error":"#REF!"}},{"$f":"SUM(#REF!)","v":{"$error":"#REF!"}},{"$f":"SUM(#REF!)","v":{"$error":"#REF!"}},{"$f":"SUM(#REF!)","v":{"$error":"#REF!"}},{"$f":"SUM(#REF!)","v":{"$error":"#REF!"}},{"$f":"SUM(#REF!)","v":{"$error":"#REF!"}},{"$f":"SUM(#REF!)","v":{"$error":"#REF!"}},{"$f":"SUM(#REF!)","v":{"$error":"#REF!"}},{"$f":"SUM(#REF!)","v":{"$error":"#REF!"}},{"$f":"SUM(#REF!)","v":{"$error":"#REF!"}},{"$f":"SUM(#REF!)","v":{"$error":"#REF!"}},{"$f":"SUM(#REF!)","v":{"$error":"#REF!"}},{"$f":"SUM(#REF!)","v":{"$error":"#REF!"}},{"$f":"SUM(#REF!)","v":{"$error":"#REF!"}},{"$f":"SUM(#REF!)","v":{"$error":"#REF!"}},{"$f":"SUM(#REF!)","v":{"$error":"#REF!"}},{"$f":"SUM(#REF!)","v":{"$error":"#REF!"}},{"$f":"SUM(#REF!)","v":{"$error":"#REF!"}},{"$f":"SUM(#REF!)","v":{"$error":"#REF!"}},{"$f":"SUM(#REF!)","v":{"$error":"#REF!"}},{"$f":"SUM(#REF!)","v":{"$error":"#REF!"}},{"$f":"SUM(#REF!)","v":{"$error":"#REF!"}},{"$f":"SUM(#REF!)","v":{"$error":"#REF!"}},{"$f":"SUM(#REF!)","v":{"$error":"#REF!"}},{"$f":"SUM(#REF!)","v":{"$error":"#REF!"}},{"$f":"SUM(#REF!)","v":{"$error":"#REF!"}},{"$f":"SUM(#REF!)","v":{"$error":"#REF!"}},{"$f":"SUM(#REF!)","v":{"$error":"#REF!"}},{"$f":"SUM(#REF!)","v":{"$error":"#REF!"}},{"$f":"SUM(#REF!)","v":{"$error":"#REF!"}},{"$f":"SUM(#REF!)","v":{"$error":"#REF!"}},{"$f":"SUM(#REF!)","v":{"$error":"#REF!"}},{"$f":"SUM(#REF!)","v":{"$error":"#REF!"}},{"$f":"SUM(#REF!)","v":{"$error":"#REF!"}},{"$f":"SUM(#REF!)","v":{"$error":"#REF!"}},{"$f":"SUM(#REF!)","v":{"$error":"#REF!"}},{"$f":"SUM(#REF!)","v":{"$error":"#REF!"}},{"$f":"SUM(#REF!)","v":{"$error":"#REF!"}},{"$f":"SUM(#REF!)","v":{"$error":"#REF!"}},{"$f":"SUM(#REF!)","v":{"$error":"#REF!"}},{"$f":"SUM(#REF!)","v":{"$error":"#REF!"}},{"$f":"SUM(#REF!)","v":{"$error":"#REF!"}},{"$f":"SUM(#REF!)","v":{"$error":"#REF!"}},{"$f":"SUM(#REF!)","v":{"$error":"#REF!"}},{"$f":"SUM(#REF!)","v":{"$error":"#REF!"}},{"$f":"SUM(#REF!)","v":{"$error":"#REF!"}},{"$f":"SUM(#REF!)","v":{"$error":"#REF!"}},{"$f":"SUM(#REF!)","v":{"$error":"#REF!"}},{"$f":"SUM(#REF!)","v":{"$error":"#REF!"}},{"$f":"SUM(#REF!)","v":{"$error":"#REF!"}},{"$f":"SUM(#REF!)","v":{"$error":"#REF!"}},{"$f":"SUM(#REF!)","v":{"$error":"#REF!"}},{"$f":"SUM(#REF!)","v":{"$error":"#REF!"}},{"$f":"SUM(#REF!)","v":{"$error":"#REF!"}},{"$f":"SUM(#REF!)","v":{"$error":"#REF!"}},{"$f":"SUM(#REF!)","v":{"$error":"#REF!"}},{"$f":"SUM(#REF!)","v":{"$error":"#REF!"}},{"$f":"SUM(#REF!)","v":{"$error":"#REF!"}},{"$f":"SUM(#REF!)","v":{"$error":"#REF!"}},{"$f":"SUM(#REF!)","v":{"$error":"#REF!"}},{"$f":"SUM(#REF!)","v":{"$error":"#REF!"}},{"$f":"SUM(#REF!)","v":{"$error":"#REF!"}},{"$f":"SUM(#REF!)","v":{"$error":"#REF!"}},{"$f":"SUM(#REF!)","v":{"$error":"#REF!"}},{"$f":"SUM(#REF!)","v":{"$error":"#REF!"}},{"$f":"SUM(#REF!)","v":{"$error":"#REF!"}},{"$f":"SUM(#REF!)","v":{"$error":"#REF!"}},{"$f":"SUM(#REF!)","v":{"$error":"#REF!"}},{"$f":"SUM(#REF!)","v":{"$error":"#REF!"}},{"$f":"SUM(#REF!)","v":{"$error":"#REF!"}},{"$f":"SUM(#REF!)","v":{"$error":"#REF!"}},{"$f":"SUM(#REF!)","v":{"$error":"#REF!"}},{"$f":"SUM(#REF!)","v":{"$error":"#REF!"}},{"$f":"SUM(#REF!)","v":{"$error":"#REF!"}},{"$f":"SUM(#REF!)","v":{"$error":"#REF!"}},{"$f":"SUM(#REF!)","v":{"$error":"#REF!"}},{"$f":"SUM(#REF!)","v":{"$error":"#REF!"}},{"$f":"SUM(#REF!)","v":{"$error":"#REF!"}},{"$f":"SUM(#REF!)","v":{"$error":"#REF!"}},{"$f":"SUM(#REF!)","v":{"$error":"#REF!"}},{"$f":"SUM(#REF!)","v":{"$error":"#REF!"}},{"$f":"SUM(#REF!)","v":{"$error":"#REF!"}},{"$f":"SUM(#REF!)","v":{"$error":"#REF!"}},{"$f":"SUM(#REF!)","v":{"$error":"#REF!"}},{"$f":"SUM(#REF!)","v":{"$error":"#REF!"}},{"$f":"SUM(#REF!)","v":{"$error":"#REF!"}},{"$f":"SUM(#REF!)","v":{"$error":"#REF!"}},{"$f":"SUM(#REF!)","v":{"$error":"#REF!"}},{"$f":"SUM(#REF!)","v":{"$error":"#REF!"}},{"$f":"SUM(#REF!)","v":{"$error":"#REF!"}},{"$f":"SUM(#REF!)","v":{"$error":"#REF!"}},{"$f":"SUM(#REF!)","v":{"$error":"#REF!"}},{"$f":"SUM(#REF!)","v":{"$error":"#REF!"}},{"$f":"SUM(#REF!)","v":{"$error":"#REF!"}},{"$f":"SUM(#REF!)","v":{"$error":"#REF!"}},{"$f":"SUM(#REF!)","v":{"$error":"#REF!"}},{"$f":"SUM(#REF!)","v":{"$error":"#REF!"}},{"$f":"SUM(#REF!)","v":{"$error":"#REF!"}},{"$f":"SUM(#REF!)","v":{"$error":"#REF!"}},{"$f":"SUM(#REF!)","v":{"$error":"#REF!"}},{"$f":"SUM(#REF!)","v":{"$error":"#REF!"}},{"$f":"SUM(#REF!)","v":{"$error":"#REF!"}},{"$f":"SUM(#REF!)","v":{"$error":"#REF!"}},{"$f":"SUM(#REF!)","v":{"$error":"#REF!"}},{"$f":"SUM(#REF!)","v":{"$error":"#REF!"}},{"$f":"SUM(#REF!)","v":{"$error":"#REF!"}},{"$f":"SUM(#REF!)","v":{"$error":"#REF!"}},{"$f":"SUM(#REF!)","v":{"$error":"#REF!"}},{"$f":"SUM(#REF!)","v":{"$error":"#REF!"}},{"$f":"SUM(#REF!)","v":{"$error":"#REF!"}},{"$f":"SUM(#REF!)","v":{"$error":"#REF!"}},{"$f":"SUM(#REF!)","v":{"$error":"#REF!"}},{"$f":"SUM(#REF!)","v":{"$error":"#REF!"}},{"$f":"SUM(#REF!)","v":{"$error":"#REF!"}},{"$f":"SUM(#REF!)","v":{"$error":"#REF!"}},{"$f":"SUM(#REF!)","v":{"$error":"#REF!"}},{"$f":"SUM(#REF!)","v":{"$error":"#REF!"}},{"$f":"SUM(#REF!)","v":{"$error":"#REF!"}},{"$f":"SUM(#REF!)","v":{"$error":"#REF!"}},{"$f":"SUM(#REF!)","v":{"$error":"#REF!"}},{"$f":"SUM(#REF!)","v":{"$error":"#REF!"}},{"$f":"SUM(#REF!)","v":{"$error":"#REF!"}},{"$f":"SUM(#REF!)","v":{"$error":"#REF!"}},{"$f":"SUM(#REF!)","v":{"$error":"#REF!"}},{"$f":"SUM(#REF!)","v":{"$error":"#REF!"}},{"$f":"SUM(#REF!)","v":{"$error":"#REF!"}},{"$f":"SUM(#REF!)","v":{"$error":"#REF!"}},{"$f":"SUM(#REF!)","v":{"$error":"#REF!"}},{"$f":"SUM(#REF!)","v":{"$error":"#REF!"}},{"$f":"SUM(#REF!)","v":{"$error":"#REF!"}},{"$f":"SUM(#REF!)","v":{"$error":"#REF!"}},{"$f":"SUM(#REF!)","v":{"$error":"#REF!"}},{"$f":"SUM(#REF!)","v":{"$error":"#REF!"}},{"$f":"SUM(#REF!)","v":{"$error":"#REF!"}},{"$f":"SUM(#REF!)","v":{"$error":"#REF!"}},{"$f":"SUM(#REF!)","v":{"$error":"#REF!"}},{"$f":"SUM(#REF!)","v":{"$error":"#REF!"}},{"$f":"SUM(#REF!)","v":{"$error":"#REF!"}},{"$f":"SUM(#REF!)","v":{"$error":"#REF!"}},{"$f":"SUM(#REF!)","v":{"$error":"#REF!"}},{"$f":"SUM(#REF!)","v":{"$error":"#REF!"}},{"$f":"SUM(#REF!)","v":{"$error":"#REF!"}},{"$f":"SUM(#REF!)","v":{"$error":"#REF!"}},{"$f":"SUM(#REF!)","v":{"$error":"#REF!"}},{"$f":"SUM(#REF!)","v":{"$error":"#REF!"}},{"$f":"SUM(#REF!)","v":{"$error":"#REF!"}},{"$f":"SUM(#REF!)","v":{"$error":"#REF!"}},{"$f":"SUM(#REF!)","v":{"$error":"#REF!"}},{"$f":"SUM(#REF!)","v":{"$error":"#REF!"}},{"$f":"SUM(#REF!)","v":{"$error":"#REF!"}},{"$f":"SUM(#REF!)","v":{"$error":"#REF!"}},{"$f":"SUM(#REF!)","v":{"$error":"#REF!"}},{"$f":"SUM(#REF!)","v":{"$error":"#REF!"}},{"$f":"SUM(#REF!)","v":{"$error":"#REF!"}},{"$f":"SUM(#REF!)","v":{"$error":"#REF!"}},{"$f":"SUM(#REF!)","v":{"$error":"#REF!"}},{"$f":"SUM(#REF!)","v":{"$error":"#REF!"}},{"$f":"SUM(#REF!)","v":{"$error":"#REF!"}},{"$f":"SUM(#REF!)","v":{"$error":"#REF!"}},{"$f":"SUM(#REF!)","v":{"$error":"#REF!"}},{"$f":"SUM(#REF!)","v":{"$error":"#REF!"}},{"$f":"SUM(#REF!)","v":{"$error":"#REF!"}},{"$f":"SUM(#REF!)","v":{"$error":"#REF!"}},{"$f":"SUM(#REF!)","v":{"$error":"#REF!"}},{"$f":"SUM(#REF!)","v":{"$error":"#REF!"}},{"$f":"SUM(#REF!)","v":{"$error":"#REF!"}},{"$f":"SUM(#REF!)","v":{"$error":"#REF!"}},{"$f":"SUM(#REF!)","v":{"$error":"#REF!"}},{"$f":"SUM(#REF!)","v":{"$error":"#REF!"}},{"$f":"SUM(#REF!)","v":{"$error":"#REF!"}},{"$f":"SUM(#REF!)","v":{"$error":"#REF!"}},{"$f":"SUM(#REF!)","v":{"$error":"#REF!"}},{"$f":"SUM(#REF!)","v":{"$error":"#REF!"}},{"$f":"SUM(#REF!)","v":{"$error":"#REF!"}},{"$f":"SUM(#REF!)","v":{"$error":"#REF!"}},{"$f":"SUM(#REF!)","v":{"$error":"#REF!"}},{"$f":"SUM(#REF!)","v":{"$error":"#REF!"}},{"$f":"SUM(#REF!)","v":{"$error":"#REF!"}},{"$f":"SUM(#REF!)","v":{"$error":"#REF!"}},{"$f":"SUM(#REF!)","v":{"$error":"#REF!"}},{"$f":"SUM(#REF!)","v":{"$error":"#REF!"}},{"$f":"SUM(#REF!)","v":{"$error":"#REF!"}},{"$f":"SUM(#REF!)","v":{"$error":"#REF!"}},{"$f":"SUM(#REF!)","v":{"$error":"#REF!"}},{"$f":"SUM(#REF!)","v":{"$error":"#REF!"}},{"$f":"SUM(#REF!)","v":{"$error":"#REF!"}},{"$f":"SUM(#REF!)","v":{"$error":"#REF!"}},{"$f":"SUM(#REF!)","v":{"$error":"#REF!"}},{"$f":"SUM(#REF!)","v":{"$error":"#REF!"}},{"$f":"SUM(#REF!)","v":{"$error":"#REF!"}},{"$f":"SUM(#REF!)","v":{"$error":"#REF!"}},{"$f":"SUM(#REF!)","v":{"$error":"#REF!"}},{"$f":"SUM(#REF!)","v":{"$error":"#REF!"}},{"$f":"SUM(#REF!)","v":{"$error":"#REF!"}},{"$f":"SUM(#REF!)","v":{"$error":"#REF!"}},{"$f":"SUM(#REF!)","v":{"$error":"#REF!"}},{"$f":"SUM(#REF!)","v":{"$error":"#REF!"}},{"$f":"SUM(#REF!)","v":{"$error":"#REF!"}},{"$f":"SUM(#REF!)","v":{"$error":"#REF!"}},{"$f":"SUM(#REF!)","v":{"$error":"#REF!"}},{"$f":"SUM(#REF!)","v":{"$error":"#REF!"}},{"$f":"SUM(#REF!)","v":{"$error":"#REF!"}},{"$f":"SUM(#REF!)","v":{"$error":"#REF!"}},{"$f":"SUM(#REF!)","v":{"$error":"#REF!"}},{"$f":"SUM(#REF!)","v":{"$error":"#REF!"}},{"$f":"SUM(#REF!)","v":{"$error":"#REF!"}},{"$f":"SUM(#REF!)","v":{"$error":"#REF!"}},{"$f":"SUM(#REF!)","v":{"$error":"#REF!"}},{"$f":"SUM(#REF!)","v":{"$error":"#REF!"}},{"$f":"SUM(#REF!)","v":{"$error":"#REF!"}},{"$f":"SUM(#REF!)","v":{"$error":"#REF!"}},{"$f":"SUM(#REF!)","v":{"$error":"#REF!"}},{"$f":"SUM(#REF!)","v":{"$error":"#REF!"}},{"$f":"SUM(#REF!)","v":{"$error":"#REF!"}},{"$f":"SUM(#REF!)","v":{"$error":"#REF!"}},{"$f":"SUM(#REF!)","v":{"$error":"#REF!"}},{"$f":"SUM(#REF!)","v":{"$error":"#REF!"}},{"$f":"SUM(#REF!)","v":{"$error":"#REF!"}},{"$f":"SUM(#REF!)","v":{"$error":"#REF!"}},{"$f":"SUM(#REF!)","v":{"$error":"#REF!"}},{"$f":"SUM(#REF!)","v":{"$error":"#REF!"}},{"$f":"SUM(#REF!)","v":{"$error":"#REF!"}},{"$f":"SUM(#REF!)","v":{"$error":"#REF!"}},{"$f":"SUM(#REF!)","v":{"$error":"#REF!"}},{"$f":"SUM(#REF!)","v":{"$error":"#REF!"}},{"$f":"SUM(#REF!)","v":{"$error":"#REF!"}},{"$f":"SUM(#REF!)","v":{"$error":"#REF!"}},{"$f":"SUM(#REF!)","v":{"$error":"#REF!"}},{"$f":"SUM(#REF!)","v":{"$error":"#REF!"}},{"$f":"SUM(#REF!)","v":{"$error":"#REF!"}},{"$f":"SUM(#REF!)","v":{"$error":"#REF!"}},{"$f":"SUM(#REF!)","v":{"$error":"#REF!"}},{"$f":"SUM(#REF!)","v":{"$error":"#REF!"}},{"$f":"SUM(#REF!)","v":{"$error":"#REF!"}},{"$f":"SUM(#REF!)","v":{"$error":"#REF!"}},{"$f":"SUM(#REF!)","v":{"$error":"#REF!"}},{"$f":"SUM(#REF!)","v":{"$error":"#REF!"}},{"$f":"SUM(#REF!)","v":{"$error":"#REF!"}},{"$f":"SUM(#REF!)","v":{"$error":"#REF!"}},{"$f":"SUM(#REF!)","v":{"$error":"#REF!"}},{"$f":"SUM(#REF!)","v":{"$error":"#REF!"}},{"$f":"SUM(#REF!)","v":{"$error":"#REF!"}},{"$f":"SUM(#REF!)","v":{"$error":"#REF!"}},{"$f":"SUM(#REF!)","v":{"$error":"#REF!"}},{"$f":"SUM(#REF!)","v":{"$error":"#REF!"}},{"$f":"SUM(#REF!)","v":{"$error":"#REF!"}},{"$f":"SUM(#REF!)","v":{"$error":"#REF!"}},{"$f":"SUM(#REF!)","v":{"$error":"#REF!"}},{"$f":"SUM(#REF!)","v":{"$error":"#REF!"}},{"$f":"SUM(#REF!)","v":{"$error":"#REF!"}},{"$f":"SUM(#REF!)","v":{"$error":"#REF!"}},{"$f":"SUM(#REF!)","v":{"$error":"#REF!"}},{"$f":"SUM(#REF!)","v":{"$error":"#REF!"}},{"$f":"SUM(#REF!)","v":{"$error":"#REF!"}},{"$f":"SUM(#REF!)","v":{"$error":"#REF!"}},{"$f":"SUM(#REF!)","v":{"$error":"#REF!"}},{"$f":"SUM(#REF!)","v":{"$error":"#REF!"}},{"$f":"SUM(#REF!)","v":{"$error":"#REF!"}},{"$f":"SUM(#REF!)","v":{"$error":"#REF!"}},{"$f":"SUM(#REF!)","v":{"$error":"#REF!"}},{"$f":"SUM(#REF!)","v":{"$error":"#REF!"}},{"$f":"SUM(#REF!)","v":{"$error":"#REF!"}},{"$f":"SUM(#REF!)","v":{"$error":"#REF!"}},{"$f":"SUM(#REF!)","v":{"$error":"#REF!"}},{"$f":"SUM(#REF!)","v":{"$error":"#REF!"}},{"$f":"SUM(#REF!)","v":{"$error":"#REF!"}},{"$f":"SUM(#REF!)","v":{"$error":"#REF!"}},{"$f":"SUM(#REF!)","v":{"$error":"#REF!"}},{"$f":"SUM(#REF!)","v":{"$error":"#REF!"}},{"$f":"SUM(#REF!)","v":{"$error":"#REF!"}},{"$f":"SUM(#REF!)","v":{"$error":"#REF!"}},{"$f":"SUM(#REF!)","v":{"$error":"#REF!"}},{"$f":"SUM(#REF!)","v":{"$error":"#REF!"}},{"$f":"SUM(#REF!)","v":{"$error":"#REF!"}},{"$f":"SUM(#REF!)","v":{"$error":"#REF!"}},{"$f":"SUM(#REF!)","v":{"$error":"#REF!"}},{"$f":"SUM(#REF!)","v":{"$error":"#REF!"}},{"$f":"SUM(#REF!)","v":{"$error":"#REF!"}},{"$f":"SUM(#REF!)","v":{"$error":"#REF!"}},{"$f":"SUM(#REF!)","v":{"$error":"#REF!"}},{"$f":"SUM(#REF!)","v":{"$error":"#REF!"}},{"$f":"SUM(#REF!)","v":{"$error":"#REF!"}},{"$f":"SUM(#REF!)","v":{"$error":"#REF!"}},{"$f":"SUM(#REF!)","v":{"$error":"#REF!"}},{"$f":"SUM(#REF!)","v":{"$error":"#REF!"}},{"$f":"SUM(#REF!)","v":{"$error":"#REF!"}},{"$f":"SUM(#REF!)","v":{"$error":"#REF!"}},{"$f":"SUM(#REF!)","v":{"$error":"#REF!"}},{"$f":"SUM(#REF!)","v":{"$error":"#REF!"}},{"$f":"SUM(#REF!)","v":{"$error":"#REF!"}},{"$f":"SUM(#REF!)","v":{"$error":"#REF!"}},{"$f":"SUM(#REF!)","v":{"$error":"#REF!"}},{"$f":"SUM(#REF!)","v":{"$error":"#REF!"}},{"$f":"SUM(#REF!)","v":{"$error":"#REF!"}},{"$f":"SUM(#REF!)","v":{"$error":"#REF!"}},{"$f":"SUM(#REF!)","v":{"$error":"#REF!"}},{"$f":"SUM(#REF!)","v":{"$error":"#REF!"}},{"$f":"SUM(#REF!)","v":{"$error":"#REF!"}},{"$f":"SUM(#REF!)","v":{"$error":"#REF!"}},{"$f":"SUM(#REF!)","v":{"$error":"#REF!"}},{"$f":"SUM(#REF!)","v":{"$error":"#REF!"}},{"$f":"SUM(#REF!)","v":{"$error":"#REF!"}},{"$f":"SUM(#REF!)","v":{"$error":"#REF!"}},{"$f":"SUM(#REF!)","v":{"$error":"#REF!"}},{"$f":"SUM(#REF!)","v":{"$error":"#REF!"}},{"$f":"SUM(#REF!)","v":{"$error":"#REF!"}},{"$f":"SUM(#REF!)","v":{"$error":"#REF!"}},{"$f":"SUM(#REF!)","v":{"$error":"#REF!"}},{"$f":"SUM(#REF!)","v":{"$error":"#REF!"}},{"$f":"SUM(#REF!)","v":{"$error":"#REF!"}},{"$f":"SUM(#REF!)","v":{"$error":"#REF!"}},{"$f":"SUM(#REF!)","v":{"$error":"#REF!"}},{"$f":"SUM(#REF!)","v":{"$error":"#REF!"}},{"$f":"SUM(#REF!)","v":{"$error":"#REF!"}},{"$f":"SUM(#REF!)","v":{"$error":"#REF!"}},{"$f":"SUM(#REF!)","v":{"$error":"#REF!"}},{"$f":"SUM(#REF!)","v":{"$error":"#REF!"}},{"$f":"SUM(#REF!)","v":{"$error":"#REF!"}},{"$f":"SUM(#REF!)","v":{"$error":"#REF!"}},{"$f":"SUM(#REF!)","v":{"$error":"#REF!"}},{"$f":"SUM(#REF!)","v":{"$error":"#REF!"}},{"$f":"SUM(#REF!)","v":{"$error":"#REF!"}},{"$f":"SUM(#REF!)","v":{"$error":"#REF!"}},{"$f":"SUM(#REF!)","v":{"$error":"#REF!"}},{"$f":"SUM(#REF!)","v":{"$error":"#REF!"}},{"$f":"SUM(#REF!)","v":{"$error":"#REF!"}},{"$f":"SUM(#REF!)","v":{"$error":"#REF!"}},{"$f":"SUM(#REF!)","v":{"$error":"#REF!"}},{"$f":"SUM(#REF!)","v":{"$error":"#REF!"}},{"$f":"SUM(#REF!)","v":{"$error":"#REF!"}},{"$f":"SUM(#REF!)","v":{"$error":"#REF!"}},{"$f":"SUM(#REF!)","v":{"$error":"#REF!"}},{"$f":"SUM(#REF!)","v":{"$error":"#REF!"}},{"$f":"SUM(#REF!)","v":{"$error":"#REF!"}},{"$f":"SUM(#REF!)","v":{"$error":"#REF!"}},{"$f":"SUM(#REF!)","v":{"$error":"#REF!"}},{"$f":"SUM(#REF!)","v":{"$error":"#REF!"}},{"$f":"SUM(#REF!)","v":{"$error":"#REF!"}},{"$f":"SUM(#REF!)","v":{"$error":"#REF!"}},{"$f":"SUM(#REF!)","v":{"$error":"#REF!"}},{"$f":"SUM(#REF!)","v":{"$error":"#REF!"}},{"$f":"SUM(#REF!)","v":{"$error":"#REF!"}},{"$f":"SUM(#REF!)","v":{"$error":"#REF!"}},{"$f":"SUM(#REF!)","v":{"$error":"#REF!"}},{"$f":"SUM(#REF!)","v":{"$error":"#REF!"}},{"$f":"SUM(#REF!)","v":{"$error":"#REF!"}},{"$f":"SUM(#REF!)","v":{"$error":"#REF!"}},{"$f":"SUM(#REF!)","v":{"$error":"#REF!"}},{"$f":"SUM(#REF!)","v":{"$error":"#REF!"}},{"$f":"SUM(#REF!)","v":{"$error":"#REF!"}},{"$f":"SUM(#REF!)","v":{"$error":"#REF!"}},{"$f":"SUM(#REF!)","v":{"$error":"#REF!"}},{"$f":"SUM(#REF!)","v":{"$error":"#REF!"}},{"$f":"SUM(#REF!)","v":{"$error":"#REF!"}},{"$f":"SUM(#REF!)","v":{"$error":"#REF!"}},{"$f":"SUM(#REF!)","v":{"$error":"#REF!"}},{"$f":"SUM(#REF!)","v":{"$error":"#REF!"}},{"$f":"SUM(#REF!)","v":{"$error":"#REF!"}},{"$f":"SUM(#REF!)","v":{"$error":"#REF!"}},{"$f":"SUM(#REF!)","v":{"$error":"#REF!"}},{"$f":"SUM(#REF!)","v":{"$error":"#REF!"}},{"$f":"SUM(#REF!)","v":{"$error":"#REF!"}},{"$f":"SUM(#REF!)","v":{"$error":"#REF!"}},{"$f":"SUM(#REF!)","v":{"$error":"#REF!"}},{"$f":"SUM(#REF!)","v":{"$error":"#REF!"}},{"$f":"SUM(#REF!)","v":{"$error":"#REF!"}},{"$f":"SUM(#REF!)","v":{"$error":"#REF!"}},{"$f":"SUM(#REF!)","v":{"$error":"#REF!"}},{"$f":"SUM(#REF!)","v":{"$error":"#REF!"}},{"$f":"SUM(#REF!)","v":{"$error":"#REF!"}},{"$f":"SUM(#REF!)","v":{"$error":"#REF!"}},{"$f":"SUM(#REF!)","v":{"$error":"#REF!"}},{"$f":"SUM(#REF!)","v":{"$error":"#REF!"}},{"$f":"SUM(#REF!)","v":{"$error":"#REF!"}},{"$f":"SUM(#REF!)","v":{"$error":"#REF!"}},{"$f":"SUM(#REF!)","v":{"$error":"#REF!"}},{"$f":"SUM(#REF!)","v":{"$error":"#REF!"}},{"$f":"SUM(#REF!)","v":{"$error":"#REF!"}},{"$f":"SUM(#REF!)","v":{"$error":"#REF!"}},{"$f":"SUM(#REF!)","v":{"$error":"#REF!"}},{"$f":"SUM(#REF!)","v":{"$error":"#REF!"}},{"$f":"SUM(#REF!)","v":{"$error":"#REF!"}},{"$f":"SUM(#REF!)","v":{"$error":"#REF!"}},{"$f":"SUM(#REF!)","v":{"$error":"#REF!"}},{"$f":"SUM(#REF!)","v":{"$error":"#REF!"}},{"$f":"SUM(#REF!)","v":{"$error":"#REF!"}},{"$f":"SUM(#REF!)","v":{"$error":"#REF!"}},{"$f":"SUM(#REF!)","v":{"$error":"#REF!"}},{"$f":"SUM(#REF!)","v":{"$error":"#REF!"}},{"$f":"SUM(#REF!)","v":{"$error":"#REF!"}},{"$f":"SUM(#REF!)","v":{"$error":"#REF!"}},{"$f":"SUM(#REF!)","v":{"$error":"#REF!"}},{"$f":"SUM(#REF!)","v":{"$error":"#REF!"}},{"$f":"SUM(#REF!)","v":{"$error":"#REF!"}},{"$f":"SUM(#REF!)","v":{"$error":"#REF!"}},{"$f":"SUM(#REF!)","v":{"$error":"#REF!"}},{"$f":"SUM(#REF!)","v":{"$error":"#REF!"}},{"$f":"SUM(#REF!)","v":{"$error":"#REF!"}},{"$f":"SUM(#REF!)","v":{"$error":"#REF!"}},{"$f":"SUM(#REF!)","v":{"$error":"#REF!"}},{"$f":"SUM(#REF!)","v":{"$error":"#REF!"}},{"$f":"SUM(#REF!)","v":{"$error":"#REF!"}},{"$f":"SUM(#REF!)","v":{"$error":"#REF!"}},{"$f":"SUM(#REF!)","v":{"$error":"#REF!"}},{"$f":"SUM(#REF!)","v":{"$error":"#REF!"}},{"$f":"SUM(#REF!)","v":{"$error":"#REF!"}},{"$f":"SUM(#REF!)","v":{"$error":"#REF!"}},{"$f":"SUM(#REF!)","v":{"$error":"#REF!"}},{"$f":"SUM(#REF!)","v":{"$error":"#REF!"}},{"$f":"SUM(#REF!)","v":{"$error":"#REF!"}},{"$f":"SUM(#REF!)","v":{"$error":"#REF!"}},{"$f":"SUM(#REF!)","v":{"$error":"#REF!"}},{"$f":"SUM(#REF!)","v":{"$error":"#REF!"}},{"$f":"SUM(#REF!)","v":{"$error":"#REF!"}},{"$f":"SUM(#REF!)","v":{"$error":"#REF!"}},{"$f":"SUM(#REF!)","v":{"$error":"#REF!"}},{"$f":"SUM(#REF!)","v":{"$error":"#REF!"}},{"$f":"SUM(#REF!)","v":{"$error":"#REF!"}},{"$f":"SUM(#REF!)","v":{"$error":"#REF!"}},{"$f":"SUM(#REF!)","v":{"$error":"#REF!"}},{"$f":"SUM(#REF!)","v":{"$error":"#REF!"}},{"$f":"SUM(#REF!)","v":{"$error":"#REF!"}},{"$f":"SUM(#REF!)","v":{"$error":"#REF!"}},{"$f":"SUM(#REF!)","v":{"$error":"#REF!"}},{"$f":"SUM(#REF!)","v":{"$error":"#REF!"}},{"$f":"SUM(#REF!)","v":{"$error":"#REF!"}},{"$f":"SUM(#REF!)","v":{"$error":"#REF!"}},{"$f":"SUM(#REF!)","v":{"$error":"#REF!"}},{"$f":"SUM(#REF!)","v":{"$error":"#REF!"}},{"$f":"SUM(#REF!)","v":{"$error":"#REF!"}},{"$f":"SUM(#REF!)","v":{"$error":"#REF!"}},{"$f":"SUM(#REF!)","v":{"$error":"#REF!"}},{"$f":"SUM(#REF!)","v":{"$error":"#REF!"}},{"$f":"SUM(#REF!)","v":{"$error":"#REF!"}},{"$f":"SUM(#REF!)","v":{"$error":"#REF!"}},{"$f":"SUM(#REF!)","v":{"$error":"#REF!"}},{"$f":"SUM(#REF!)","v":{"$error":"#REF!"}},{"$f":"SUM(#REF!)","v":{"$error":"#REF!"}},{"$f":"SUM(#REF!)","v":{"$error":"#REF!"}},{"$f":"SUM(#REF!)","v":{"$error":"#REF!"}},{"$f":"SUM(#REF!)","v":{"$error":"#REF!"}},{"$f":"SUM(#REF!)","v":{"$error":"#REF!"}},{"$f":"SUM(#REF!)","v":{"$error":"#REF!"}},{"$f":"SUM(#REF!)","v":{"$error":"#REF!"}},{"$f":"SUM(#REF!)","v":{"$error":"#REF!"}},{"$f":"SUM(#REF!)","v":{"$error":"#REF!"}},{"$f":"SUM(#REF!)","v":{"$error":"#REF!"}},{"$f":"SUM(#REF!)","v":{"$error":"#REF!"}},{"$f":"SUM(#REF!)","v":{"$error":"#REF!"}},{"$f":"SUM(#REF!)","v":{"$error":"#REF!"}},{"$f":"SUM(#REF!)","v":{"$error":"#REF!"}},{"$f":"SUM(#REF!)","v":{"$error":"#REF!"}},{"$f":"SUM(#REF!)","v":{"$error":"#REF!"}},{"$f":"SUM(#REF!)","v":{"$error":"#REF!"}},{"$f":"SUM(#REF!)","v":{"$error":"#REF!"}},{"$f":"SUM(#REF!)","v":{"$error":"#REF!"}},{"$f":"SUM(#REF!)","v":{"$error":"#REF!"}},{"$f":"SUM(#REF!)","v":{"$error":"#REF!"}},{"$f":"SUM(#REF!)","v":{"$error":"#REF!"}},{"$f":"SUM(#REF!)","v":{"$error":"#REF!"}},{"$f":"SUM(#REF!)","v":{"$error":"#REF!"}},{"$f":"SUM(#REF!)","v":{"$error":"#REF!"}},{"$f":"SUM(#REF!)","v":{"$error":"#REF!"}},{"$f":"SUM(#REF!)","v":{"$error":"#REF!"}},{"$f":"SUM(#REF!)","v":{"$error":"#REF!"}},{"$f":"SUM(#REF!)","v":{"$error":"#REF!"}},{"$f":"SUM(#REF!)","v":{"$error":"#REF!"}},{"$f":"SUM(#REF!)","v":{"$error":"#REF!"}},{"$f":"SUM(#REF!)","v":{"$error":"#REF!"}},{"$f":"SUM(#REF!)","v":{"$error":"#REF!"}},{"$f":"SUM(#REF!)","v":{"$error":"#REF!"}},{"$f":"SUM(#REF!)","v":{"$error":"#REF!"}},{"$f":"SUM(#REF!)","v":{"$error":"#REF!"}},{"$f":"SUM(#REF!)","v":{"$error":"#REF!"}},{"$f":"SUM(#REF!)","v":{"$error":"#REF!"}},{"$f":"SUM(#REF!)","v":{"$error":"#REF!"}},{"$f":"SUM(#REF!)","v":{"$error":"#REF!"}},{"$f":"SUM(#REF!)","v":{"$error":"#REF!"}},{"$f":"SUM(#REF!)","v":{"$error":"#REF!"}},{"$f":"SUM(#REF!)","v":{"$error":"#REF!"}},{"$f":"SUM(#REF!)","v":{"$error":"#REF!"}},{"$f":"SUM(#REF!)","v":{"$error":"#REF!"}},{"$f":"SUM(#REF!)","v":{"$error":"#REF!"}},{"$f":"SUM(#REF!)","v":{"$error":"#REF!"}},{"$f":"SUM(#REF!)","v":{"$error":"#REF!"}},{"$f":"SUM(#REF!)","v":{"$error":"#REF!"}},{"$f":"SUM(#REF!)","v":{"$error":"#REF!"}},{"$f":"SUM(#REF!)","v":{"$error":"#REF!"}},{"$f":"SUM(#REF!)","v":{"$error":"#REF!"}},{"$f":"SUM(#REF!)","v":{"$error":"#REF!"}},{"$f":"SUM(#REF!)","v":{"$error":"#REF!"}},{"$f":"SUM(#REF!)","v":{"$error":"#REF!"}},{"$f":"SUM(#REF!)","v":{"$error":"#REF!"}},{"$f":"SUM(#REF!)","v":{"$error":"#REF!"}},{"$f":"SUM(#REF!)","v":{"$error":"#REF!"}},{"$f":"SUM(#REF!)","v":{"$error":"#REF!"}},{"$f":"SUM(#REF!)","v":{"$error":"#REF!"}},{"$f":"SUM(#REF!)","v":{"$error":"#REF!"}},{"$f":"SUM(#REF!)","v":{"$error":"#REF!"}},{"$f":"SUM(#REF!)","v":{"$error":"#REF!"}},{"$f":"SUM(#REF!)","v":{"$error":"#REF!"}},{"$f":"SUM(#REF!)","v":{"$error":"#REF!"}},{"$f":"SUM(#REF!)","v":{"$error":"#REF!"}},{"$f":"SUM(#REF!)","v":{"$error":"#REF!"}},{"$f":"SUM(#REF!)","v":{"$error":"#REF!"}},{"$f":"SUM(#REF!)","v":{"$error":"#REF!"}},{"$f":"SUM(#REF!)","v":{"$error":"#REF!"}},{"$f":"SUM(#REF!)","v":{"$error":"#REF!"}},{"$f":"SUM(#REF!)","v":{"$error":"#REF!"}},{"$f":"SUM(#REF!)","v":{"$error":"#REF!"}},{"$f":"SUM(#REF!)","v":{"$error":"#REF!"}},{"$f":"SUM(#REF!)","v":{"$error":"#REF!"}},{"$f":"SUM(#REF!)","v":{"$error":"#REF!"}},{"$f":"SUM(#REF!)","v":{"$error":"#REF!"}},{"$f":"SUM(#REF!)","v":{"$error":"#REF!"}},{"$f":"SUM(#REF!)","v":{"$error":"#REF!"}},{"$f":"SUM(#REF!)","v":{"$error":"#REF!"}},{"$f":"SUM(#REF!)","v":{"$error":"#REF!"}},{"$f":"SUM(#REF!)","v":{"$error":"#REF!"}},{"$f":"SUM(#REF!)","v":{"$error":"#REF!"}},{"$f":"SUM(#REF!)","v":{"$error":"#REF!"}},{"$f":"SUM(#REF!)","v":{"$error":"#REF!"}},{"$f":"SUM(#REF!)","v":{"$error":"#REF!"}},{"$f":"SUM(#REF!)","v":{"$error":"#REF!"}},{"$f":"SUM(#REF!)","v":{"$error":"#REF!"}},{"$f":"SUM(#REF!)","v":{"$error":"#REF!"}},{"$f":"SUM(#REF!)","v":{"$error":"#REF!"}},{"$f":"SUM(#REF!)","v":{"$error":"#REF!"}},{"$f":"SUM(#REF!)","v":{"$error":"#REF!"}},{"$f":"SUM(#REF!)","v":{"$error":"#REF!"}},{"$f":"SUM(#REF!)","v":{"$error":"#REF!"}},{"$f":"SUM(#REF!)","v":{"$error":"#REF!"}},{"$f":"SUM(#REF!)","v":{"$error":"#REF!"}},{"$f":"SUM(#REF!)","v":{"$error":"#REF!"}},{"$f":"SUM(#REF!)","v":{"$error":"#REF!"}},{"$f":"SUM(#REF!)","v":{"$error":"#REF!"}},{"$f":"SUM(#REF!)","v":{"$error":"#REF!"}},{"$f":"SUM(#REF!)","v":{"$error":"#REF!"}},{"$f":"SUM(#REF!)","v":{"$error":"#REF!"}},{"$f":"SUM(#REF!)","v":{"$error":"#REF!"}},{"$f":"SUM(#REF!)","v":{"$error":"#REF!"}},{"$f":"SUM(#REF!)","v":{"$error":"#REF!"}},{"$f":"SUM(#REF!)","v":{"$error":"#REF!"}},{"$f":"SUM(#REF!)","v":{"$error":"#REF!"}},{"$f":"SUM(#REF!)","v":{"$error":"#REF!"}},{"$f":"SUM(#REF!)","v":{"$error":"#REF!"}},{"$f":"SUM(#REF!)","v":{"$error":"#REF!"}},{"$f":"SUM(#REF!)","v":{"$error":"#REF!"}},{"$f":"SUM(#REF!)","v":{"$error":"#REF!"}},{"$f":"SUM(#REF!)","v":{"$error":"#REF!"}},{"$f":"SUM(#REF!)","v":{"$error":"#REF!"}},{"$f":"SUM(#REF!)","v":{"$error":"#REF!"}},{"$f":"SUM(#REF!)","v":{"$error":"#REF!"}},{"$f":"SUM(#REF!)","v":{"$error":"#REF!"}},{"$f":"SUM(#REF!)","v":{"$error":"#REF!"}},{"$f":"SUM(#REF!)","v":{"$error":"#REF!"}},{"$f":"SUM(#REF!)","v":{"$error":"#REF!"}},{"$f":"SUM(#REF!)","v":{"$error":"#REF!"}},{"$f":"SUM(#REF!)","v":{"$error":"#REF!"}},{"$f":"SUM(#REF!)","v":{"$error":"#REF!"}},{"$f":"SUM(#REF!)","v":{"$error":"#REF!"}},{"$f":"SUM(#REF!)","v":{"$error":"#REF!"}},{"$f":"SUM(#REF!)","v":{"$error":"#REF!"}},{"$f":"SUM(#REF!)","v":{"$error":"#REF!"}},{"$f":"SUM(#REF!)","v":{"$error":"#REF!"}},{"$f":"SUM(#REF!)","v":{"$error":"#REF!"}},{"$f":"SUM(#REF!)","v":{"$error":"#REF!"}},{"$f":"SUM(#REF!)","v":{"$error":"#REF!"}},{"$f":"SUM(#REF!)","v":{"$error":"#REF!"}},{"$f":"SUM(#REF!)","v":{"$error":"#REF!"}},{"$f":"SUM(#REF!)","v":{"$error":"#REF!"}},{"$f":"SUM(#REF!)","v":{"$error":"#REF!"}},{"$f":"SUM(#REF!)","v":{"$error":"#REF!"}},{"$f":"SUM(#REF!)","v":{"$error":"#REF!"}},{"$f":"SUM(#REF!)","v":{"$error":"#REF!"}}]
["Back to Contents"]

{"sheet":"Gas storage projects","index":22,"n_rows":43,"n_cols":11,"rows_kept":43,"cut":false,"hidden":false,"merged":[[7,0,7,1],[8,0,8,1],[42,0,42,1],[33,5,34,5],[33,6,34,6],[11,0,11,1],[11,2,11,3],[25,0,27,0],[22,2,22,3],[20,0,23,0],[25,2,27,3],[23,2,23,3],[24,2,24,3],[21,2,21,3],[20,2,20,3],[12,0,12,10],[33,7,33,8],[40,0,40,10],[39,0,39,4],[35,0,36,0],[33,3,34,4],[35,3,35,4],[37,3,37,4],[36,3,36,4],[33,2,34,2],[33,0,34,0],[33,1,34,1],[4,9,4,10],[2,7,2,8],[11,7,11,8],[4,7,4,8],[38,3,38,4],[29,2,29,3],[18,2,18,3],[19,2,19,3],[11,9,11,10],[15,4,15,255],[1,5,2,6],[15,2,17,3],[3,7,3,8],[33,9,34,9],[33,10,34,10],[1,7,1,10],[0,0,0,6],[4,5,4,6],[3,5,3,6],[4,0,4,1],[5,0,5,1],[5,2,5,3],[5,5,5,6],[4,2,4,3],[3,0,3,1],[3,9,3,10],[3,2,3,3],[1,0,2,1],[1,2,2,3],[2,9,2,10],[9,9,9,10],[14,0,14,6],[15,0,17,0],[15,1,17,1],[11,5,11,6],[6,0,6,1],[6,2,6,3],[6,5,6,6],[6,7,6,8],[6,9,6,10],[7,7,7,8],[5,9,5,10],[5,7,5,8],[7,9,7,10],[8,9,8,10],[8,2,8,3],[32,0,32,6],[30,0,30,10],[28,2,28,3],[10,0,10,1],[10,2,10,3],[10,7,10,8],[10,9,10,10],[10,5,10,6],[8,7,8,8],[8,5,8,6],[9,5,9,6],[16,4,16,5],[9,0,9,1],[9,2,9,3],[9,7,9,8]]}
["Major projects for the development of underground gas storage in Russia"]
["Region of the\nRussian Federation",null,"UGSF name",null,null,"UGSF type",null,"Project parameters"]
[null,null,null,null,null,null,null,"Aggregate active\ncapacity, bcm",null,"Maximum potential\ndaily capacity, mmcm"]
["Volgograd Region",null,"Volgogradskoye",null,null,"Deposits of salt rock",null,0.8,null,70]
["Kaliningrad Region",null,"Kaliningradskoe",null,null,"Deposits of salt rock",null,0.8,null,12]
["Republic of Tatarstan",null,"Arbuzovskoye",null,null,"Water bearing structures",null,0.7,null,7.6]
["Republic of Udmurtia",null,"Udmurtsky reserve complex",null,null,"Water bearing structures",null,2.8,null,44.9]
["Tyumen Region",null,"Punginskoe",null,null,"Depleted field",null,5,null,50]
["Kurgan Region",null,"Shatrovskoye",null,null,"Water bearing structures",null,1,null,14]
["Krasnodar Territory",null,"Kushchevskoye",null,null,"Depleted field",null,5.3,null,70]
["Tula Region",null,"Novomoskovskoye",null,null,"Deposits of salt rock",null,0.3,null,40]
["Penza Region, \nRepublic of Mordovia",null,"Bednodemyanovskoye",null,null,"Water bearing structures",null,5,null,70]
["Note. As at 31 December 2019."]
[]
["UGSFs with Gazprom Group participation abroad"]
["Country ","UGSF name","Groups’s\nparticipation",null,"UGSF capacities as at 31 December 2019"]
[null,null,null,null,"Aggregate active capacity, bcm"]
[null,null,null,null,"Total","Including employed\nby Gazprom Group","Daily withdrawal capacity\nemployed by Gazprom\nGroup, mmcm","CS","GPU","Installed capacity\nof GPUs, MW","Exploitation\nwells /\ncaverns"]
["Austria","Haidach","Co-investor\n(55.5%)",null,2.8,"2.4 \n(of which\nOOO Gazprom\nExport — 2.4)","24.5 \n(of which\nOOO Gazprom\nExport — 24.5)",1,4,62,17]
["Serbia","Banatski\nDvor","Co-investor\n(51%)\n",null,0.55000000000000004,"0.28 \n(of which\nOOO Gazprom\nExport — 0.28)","2.5 \n(of which\nOOO Gazprom\nExport — 2.5)",1,2,5,18]
["Germany","Jemgum","Co-investor\n(83.3%)",null,0.7,"0.5 \n(capacity\nnot employed by\nGazprom Export)","16.6 \n(capacity\nnot employed by\nGazprom Export)",1,3,38,9]
[null,"Katharina","Co-investor\n(50%)",null,0.47,"0.47\n(of which\nOOO Gazprom\nExport — 0.47)","25.8 \n(of which\nOOO Gazprom\nExport — 25.8)",1,3,37,8]
[null,"Rehden","Ownership",null,4.16,"4.16\n(of which\nOOO Gazprom\nExport — 3.4)","50.5 \n(of which\nOOO Gazprom\nExport — 50.5)",1,7,90,16]
[null,"Etzel","Co-investor\n(33% share in caverns,\n16% share in pipelines)",null,1,"0.3 \n(capacity\nnot employed by\nGazprom Export)","6.9 \n(capacity\nnot employed by\nGazprom Export)",1,3,24,9]
["Czech\nRepublic","Damborice","Co-investor\n(50%)",null,0.3,"0.3\n(of which\nOOO Gazprom\nExport — 0.3)","5.1 \n(of which\nOOO Gazprom\nExport — 4.6)",1,3,10.5,14]
["Belarus","Pribugskoye","Ownership",null,0.5,"0.5",8,1,5,7.1,41]
[null,"Osipovichskoye",null,null,0.4,"0.4",6,1,6,4.4000000000000004,42]
[null,"Mozyrskoye",null,null,0.3,"0.3",20,1,2,4.5999999999999996,16]
["Latvia","Inchukalnskoye","Co-investor\n(34%)",null,2.2999999999999998,"–","–",1,6,33.1,93]
["Armenia","Abovyanskaya\nunderground gas\nstorage station","Ownership",null,0.1,0.1,6,1,9,9.9,21]
["Note. As at 31 December 2019."]
[]
["Promising UGSFs with Gazprom Group’s participation abroad"]
["Country","UGSF","Type of construction","Type of UGSF",null,"Project\nstart","Gazprom Group\nparticipation","Project parameters",null,"Commissioning year","Design capacity year"]
[null,null,null,null,null,null,null,"Aggregate\nactive capacity,\nbcm","Daily capacity,\nmmcm"]
["Germany","Jemgum","New construction","Deposits of salt rock",null,2009,"Co-investor\n(83.3%)",0.9,23.2,"2014","2020"]
[null,"Katharina","New construction","Deposits of salt rock",null,2011,"Co-investor\n(50%)",0.7,25.8,"2011","2025"]
["Serbia","Banatski Dvor","Expansion of\nexisting UGSF","Deposits of salt rock",null,2009,"Co-investor\n(51%)",0.8,10,"2011","2022*"]
["Czech\nRepublic","Damborice","New construction","Depleted field",null,2014,"Co-investor\n(50%)",0.5,7.6,2016,2021]
["* Preliminary estimates."]
["Note. As at 31 December 2019. Timelines for commissioning and ramp-up may be adjusted subject to the energy market environment."]
[]
["Back to Contents"]

{"sheet":"UGSF capacity leased","index":23,"n_rows":9,"n_cols":3,"rows_kept":9,"cut":false,"hidden":false,"merged":[[8,0,8,1],[6,0,6,2],[0,0,0,2]]}
["European UGSF capacity leased by OOO Gazprom export by the start of the 2019/2020 \nwithdrawal season"]
["Country","Aggregate active capacity\nemployed by Gazprom Group,\nbcm","Daily withdrawal capacity\nemployed by Gazprom Group, mmcm"]
["Netherlands (UGSF Bergermeer*)",1.85,26.1]
["Austria",1.2,8.6]
["Slovakia",0.86,5]
["Hungary",0.95,6.55]
["* When constructing the UGSF, PJSC Gazprom provided the necessary volume of cushion gas \nto get access to its capacities."]
[]
["Back to Contents"]

{"sheet":"Refining","index":24,"n_rows":142,"n_cols":16,"rows_kept":142,"cut":false,"hidden":false,"merged":[[1,0,1,11],[0,0,0,11],[64,1,64,15],[65,1,65,15],[66,1,66,15],[35,1,35,15],[3,1,3,15],[23,1,23,15],[17,0,17,15],[29,1,29,15],[33,0,33,11],[27,0,27,11],[21,0,21,11],[63,0,63,11],[67,1,67,15],[138,0,138,11],[139,0,139,11],[80,1,80,15],[137,0,137,15],[78,0,78,11],[68,1,68,15],[69,1,69,15],[75,1,75,15],[76,1,76,15],[70,1,70,15],[71,1,71,15],[72,1,72,15],[73,1,73,15],[74,1,74,15]]}
["Hydrocarbon Refining and Processing, Gas Chemical and Petrochemical Business"]
["Volumes of Gazprom Group’s hydrocarbon processing\n(excluding tolling arrangements)"]
["(excluding tolling arrangements)"]
[null,"For the year ended 31 December"]
[null,2005,2006,2007,2008,2009,2010,2011,2012,2013,2014,2015,2016,2017,2018,2019]
["Natural and associated petroleum gas, \nbcm"]
["PJSC Gazprom and its major subsidiaries*",33.880000000000003,33.47,33.32,33.28,30.39,33.619999999999997,33.159999999999997,32.229999999999997,31.11,30,30.64,30.06,29.94,30.14,30.6]
["Gazprom neftekhim Salavat**","–","–","–","–","–","–","–",0.22,0.41,0.45,0.44,0.49,0.43,0.47,0.44]
["Sibur Holding***",12.4,13.8,10.71,5.05,"x","x","x","x","x","x","x","x","x","x","x"]
["Gazprom Neft","–","–","–","–","–","–","–","–","–","–",0.1,0.44,0.45,0.45,0.43]
["Total",46.28,47.269999999999996,44.03,38.33,{"$f":"F7","v":30.39},33.619999999999997,33.159999999999997,32.450000000000003,31.52,30.45,31.18,30.99,30.82,31.06,31.47]
["Crude oil and gas condensate, \nmm tonnes"]
["PJSC Gazprom and its major subsidiaries*\n(unstable gas condensate, crude oil)",12.03,12.01,12.01,11.65,10.87,12.32,13.04,13.97,16.09,16.38,17.260000000000002,17.55,17.47,17.75,18.82]
["Gazprom Neft\n(crude oil, stable gas condensate)",4.09,24.36,26.23,28.39,33.43,37.9,40.49,43.34,42.63,43.48,43.07,41.89,40.11,42.91,41.48]
["including abroad","–","–","–","–",2.39,2.85,2.36,4.08,3.8,3.78,3.54,3.23,3.42,3.56,3.14]
["Gazprom neftekhim Salavat*\n(crude oil, stable gas condensate, fuel oil)","–","–","–","–","–","–","–",4.2300000000000004,7.42,8.1300000000000008,6.44,6.47,6.48,6.74,6.83]
["Total",{"$f":"B13+B14","v":16.119999999999997},{"$f":"C13+C14","v":36.369999999999997},38.24,{"$f":"E13+E14","v":40.04},{"$f":"F13+F14","v":44.3},50.22,53.53,{"$f":"I13+I14+I16","v":61.540000000000006},{"$f":"J13+J14+J16","v":66.14},{"$f":"K13+K14+K16","v":67.989999999999995},{"$f":"L13+L14+L16","v":66.77},65.91,64.06,67.400000000000006,67.13]
["* Taking into account the processing volumes of OOO Gazprom dobycha shelf Yuzhno-Sakhalinsk, OOO Sibmetakhim, AO Tomskgazprom. Also taking into account the processing volumes of OOO Gazprom dobycha Irkutsk and OOO Servisneftegaz; the financial results of these entities are not included in Gazprom Group’s IFRS consolidated financial statements due to insignificance."]
["** The results are shown since June 1, 2012."]
["*** The results are shown prior to Sibur Holding deconsolidation since Q3 2008."]
[]
["Liquid hydrocarbon primary processing by Gazprom’s major subsidiaries, mm tonnes"]
["(excluding tolling arrangements)"]
[null,"For the year ended 31 December"]
[null,2005,2006,2007,2008,2009,2010,2011,2012,2013,2014,2015,2016,2017,2018,2019]
["Stable gas condensate (oil)",5.99,5.82,5.91,5.81,5.56,5.88,5.91,6.61,6.74,6.71,6.44,6.58,6.49,6.21,6.65]
[]
["Processing of natural and associated gas supplied by non-Group companies at key subsidiaries of PJSC Gazprom, bcm"]
["(under tolling arrangements)"]
[null,"For the year ended 31 December"]
[null,2005,2006,2007,2008,2009,2010,2011,2012,2013,2014,2015,2016,2017,2018,2019]
["Natural and associated gas",7.36,8.3000000000000007,8.19,8.3699999999999992,8.67,8.34,8.3800000000000008,8.4600000000000009,8.61,8.9700000000000006,8.91,9.2799999999999994,9.15,9.5500000000000007,9.11]
[]
["Major types of Gazprom Group’s refined and processed products, and gas chemical and petrochemical products"]
["(excluding tolling arrangements)"]
[null,"For the year ended 31 December"]
[null,2005,2006,2007,2008,2009,2010,2011,2012,2013,2014,2015,2016,2017,2018,2019]
["Stable gas condensate and oil, \nthousand tonnes",3728.7,3792.8,3653.2,3413.8,3408.2,3828.3,4595.1000000000004,4675.3,6035.3,6410.8,7448.1,8216.4,8688.7000000000007,8234.2999999999993,8362]
["Dry gas, mmcm",37418,38013.699999999997,35824.600000000006,30913.200000000001,24204.9,26198.3,25712.799999999999,24967.7,24194.799999999999,23329.5,"24 205,2","23 996,9","23 607,0","23 590,9","23 928,9"]
["Liquefied hydrocarbon gases, \nthousand tonnes",4880.7,5325.1,5537.6,4104.1000000000004,2806.6,3119.3,2972.7,3097.3,3276.4,3371.1,3463.3,3525.4,3522.5,3614.3,3663.8]
["including abroad","–","–","–","–",105.4,110.5,83,127.2,118,130.4,137.9,115,103,97,77.8]
["Motor gasoline, thousand tonnes",3125.7,7218.8,7518.7,7606.2,8648.7999999999993,9368.7999999999993,10253.299999999999,11706.9,12125.2,12067.9,12395.2,12270,11705.6,12044.9,11703.1]
["including abroad","–","–","–","–",502.8,554.4,459,827.8,669.9,762.7,646.79999999999995,516,469,515.70000000000005,445.2]
["Diesel fuel, thousand tonnes",2954.8,9056.9,9510.7000000000007,10406.6,11214.2,12830.9,12771.6,14459.5,16215.2,16281.4,14837,14971.4,14322.1,15662.5,15514.6]
["including abroad","–","–","–","–",836,898.1,675,1251.9000000000001,1423.5,1493.8,1470.1,1363,1299,1571.2,1432.7]
["Jet fuel, thousand tonnes",327.9,1790.2,1944.2,1967.3,2276,2598.1,2735.5,2813.7,2852,3161.9,3171,3213.2,3148.8,3553.3,3433.8]
["including abroad","–","–","–","–",48.3,68.2,75,73.3,73.2,108.5,107.9,122,155,190.4,154.4]
["Heating oil, thousand tonnes",1077.8,4886.5,5653.9,6138.5,6355.6,8176.4,8642.5,10123.799999999999,9132,9318,8371.4,7787.2,6585.9,6880.6,7167.8]
["including abroad","–","–","–","–",460.3,528.5,403,1081.7,739.4,717.8,450.6,334,318,253.7,186.4]
["Marine fuel, thousand tonnes ",null,null,null,null,null,null,null,3378.1149999999998,3311.1,4139,4172.2,3177.2,3367.3,2952,2795.3]
["Bitumen, thousand tonnes",null,null,null,null,null,null,null,1474.912,2056.5,1949.2,1883.8,2112,2662.1,3122.3,2959]
["including abroad",null,null,null,null,null,null,null,173,245.3,262.2,333,335,553.29999999999995,600.29999999999995,572.29999999999995]
["Oils, thousand tonnes",53,327,346.4,328.3,371.4,367.1,391,380.3,396.2,374.3,404.1,421,480,487.2,539.29999999999995]
["Sulfur, thousand tonnes",5370.3,5353.5,5432.3,5385.9,4404.6000000000004,5252.4,5391.5,5327.6,4936.8999999999996,4747.8,4793.8,4905.6000000000004,5013.6000000000004,5179.7,5377.8]
["including abroad","–","–","–","–","–",2,3.3,2.9,12,15.6,17.8,22,24,23,13.8]
["Helium, mcm",1636.4,3838.1,4874,5037.8999999999996,4892.6000000000004,4856.1000000000004,3526.4,4923.8999999999996,3570.7,3997.5,4969.7,5054.1000000000004,5102.2,5088.8999999999996,4731.5]
["Wide fraction of light hydrocarbons, \nthousand tonnes",3006.6,3896.7,2648.9,1488.5,454,491.7,697.4,998.4,1587.6,1553.4,1728.2,1807,1349.7,1465.5,"1 383, 8"]
["Ethane fraction, thousand tonnes",108.1,223.2,238.4,327.2,362.1,384.1,391.8,397.1,389,373.8,377.4,377.9,363,347.3,337.3]
["Monomers, thousand tonnes",1848,2122.5,1997.9,1096.3,"–","–","–",97.8,242.6,262.2,243.4,294,264.89999999999998,335.8,293.3]
["Polymers, thousand tonnes",469,490,506,290,"–","–","–",61.3,133.19999999999999,161.80000000000001,157.9,179.1,154.30000000000001,185.6,171.6]
["Products of organic synthesis, \nthousand tonnes",990,1109,1134.5999999999999,544.5,"–","–","–",87.4,86.8,83.5,90.4,89.6,44.7,71.3,49.7]
["Mineral fertilizers and raw materials for their production, thousand tonnes",1482,1360.4,1598.1,1103.4000000000001,"–","–","–",326.10000000000002,752.1,778.2,775.9,953,913.2,836.4,799.7]
[]
["Areas at utilization of some types of refined oil and gas products produced by Gazprom Group"]
["Product type","Area of utilization"]
["Acrylic acid, acrylates","Production of absorbent products, water-emulsion paints and other adhesive coatings"]
["Oil bitumens","Road construction, waterproofing materials"]
["Bitumen-derived materials","Construction and repair of highways, airfields, artificial structures, hydro and corrosion protection, industrial and civil engineering"]
["Helium","Power engineering, metallurgy, ferospace industry, shipbuilding, mechanical engineering, medicine"]
["Mineral fertilizers (carbamide, liquid ammonia, carbon dioxide, ammonium nitrate)","Agriculture"]
["Monomers (ethylene, propylene, styrene)","Raw materials for the petrochemical industry"]
["Products of organic synthesis (butanol, plasticizer DOF)","Raw materials for the petrochemical industry"]
["Polymer-bitumen binder","Road construction"]
["Polymers (polyethylene, polystyrene)","Manufacture of medical and household products, tapes, packaging and insulation materials"]
["Ethane fraction","Raw materials for petrochemical industry"]
["Coke","Manufacture of electrodes, anodes. Nonferrous and ferrous metallurgy"]
["Wide fraction of light hydrocarbons","Raw materials for the petrochemical and gas chemical industry"]
[]
["Refined products produced by major Gazprom Group’s subsidiaries"]
["(excluding tolling arrangements)"]
[null,"For the year ended 31 December"]
[null,2005,2006,2007,2008,2009,2010,2011,2012,2013,2014,2015,2016,2017,2018,2019]
["PJSC Gazprom and \nits major subsidiaries*"]
["Stable gas condensate and oil,\nthousand tonnes",3728.7,3792.8,3711.7,3413.8,3408.2,3828.3,4595.1000000000004,4675.3,6035.3,6410.8,7448.1,8216.4,8688.7000000000007,8234.2999999999993,8362]
["Dry gas, mmcm",26467,25938.1,26534.400000000001,26480.2,24204.9,26198.3,25712.799999999999,24967.7,24194.799999999999,23329.5,"24 119,2","23 620,1","23 223,1","23 211,3","23 568,3"]
["Liquefied hydrocarbon gases, \nthousand tonnes",1881.9,1837.7,2109.8000000000002,2037.2,2025.2,2311.6,2281.6999999999998,2286.4,2287.4,2441.6999999999998,2487.4,2578.4,2828.5,2814.3,2944.4]
["Motor gasoline, thousand tonnes",2242.6999999999998,2158.8000000000002,2141.8000000000002,2132.3000000000002,2018.1,2114.3000000000002,2153.3000000000002,2243.8000000000002,2428.8000000000002,2519.6999999999998,2532.6999999999998,2497.9,2234.5,2150.6999999999998,2319.8000000000002]
["Diesel fuel, thousand tonnes",1640.8,1442.9,1429.3,1394.1,1276.5,1366.2,1280.5999999999999,1554.5,1569,1585.7,1362.1,1435.6,1496.8,1373.4,1618.6]
["Jet fuel, thousand tonnes",50.9,150.19999999999999,133.9,161.4,165.8,165.7,166.5,146,158.80000000000001,172.1,167.7,174.2,111.8,88.3,95]
["Heating oil, thousand tonnes",380.8,380.5,394.2,389.7,347.9,377.9,299.5,347.3,351.4,329.6,332.2,346.1,328.4,323.39999999999998,395.4]
["Sulfur, thousand tonnes",5361.8,5296.3,5370.1,5319.8,4322.1000000000004,5154.8999999999996,5283.5,5203.3999999999996,4790.3999999999996,4589.3999999999996,4623.8999999999996,4696.5,4847.8999999999996,4983.8999999999996,5154.3999999999996]
["Helium, mcm",1636.4,3838.1,4874,5037.8999999999996,4892.6000000000004,4856.1000000000004,3526.4,4923.8999999999996,3570.7,3997.5,4969.7,5054.1000000000004,5102.2,5088.8999999999996,4731.5]
["Wide fraction of light hydrocarbons, \nthousand tonnes",541.6,881.4,587.5,554.6,454,491.7,697.4,998.4,1587.6,1534.7,1661.9,1666.7,1149.4000000000001,1270.5,1212.4000000000001]
["Ethane fraction, thousand tonnes",108.1,223.2,238.4,327.2,362.1,384.1,391.8,397.1,389,373.8,377.4,377.9,363,347.3,337.3]
["Gazprom Neft"]
["Dry gas, bcm","–","–","–","–","–","–","–","–","–","–",86,376.8,383.9,379.6,360.6]
["Liquefied hydrocarbon gases, thousand tonnes",107.8,544.6,566.1,563.79999999999995,781.4,807.7,691,810.9,989,929.4,975.9,947,694,800,719.4]
["including abroad","–","–","–","–",105.4,110.5,83,127.2,118,130.4,137.9,115,103,97,77.8]
["Motor gasoline, thousand tonnes",883,5060,5376.9,5473.9,6630.7,7254.5,8100,8961.6,8923,8844.7999999999993,9081.2000000000007,9176,8555,8863.7999999999993,8015.2]
["including abroad","–","–","–","–",502.8,554.4,459,827.8,669.9,762.7,646.79999999999995,516,469,515.70000000000005,445.2]
["Diesel fuel, thousand tonnes ",1314,7614,8081.4,9012.5,9937.7000000000007,11464.7,11491.1,11508.1,12087.8,12147.7,11874.5,12023,11325,12323.6,11870.4]
["including abroad","–","–","–","–",836,898.1,675,1251.9000000000001,1423.5,1493.8,1470.1,1363,1299,1571.2,1432.7]
["Jet fuel, thousand tonnes ",277,1640,1810.3,1805.9,2110.1999999999998,2432.5,2569,2667.7,2693.2,2989.8,3003.3,3039,3037,3465,3338.8]
["including abroad","–","–","–","–",48.3,68.2,75,73.3,73.2,108.5,107.9,122,155,190.4,154.4]
["Heating oil, thousand tonnes",697,4506,5259.7,5748.8,6007.7,7798.5,8343,8775.2000000000007,7476.9,7391.7,7198.6,6720,5696,6204.8,6447.2]
["including abroad","–","–","–","–",460.3,528.5,403,1081.7,739.4,717.8,450.6,334,318,253.7,186.4]
["Marine fuel, thousand tonnes ",null,null,null,null,null,null,null,3378.1149999999998,3311.1,4076.3,3666.9,2410,2671,2576.4,2490.8000000000002]
["Bitumen, thousand tonnes",null,null,null,null,null,null,null,1378,1935.5,1875.1,1857.6,2021,2569.1999999999998,2928.5,2780.9]
["including abroad",null,null,null,null,null,null,null,173,245.3,262.2,333,335,553.29999999999995,600.29999999999995,572.29999999999995]
["Oils, thousand tonnes",53,327,346.4,328.3,371.4,367.1,391,380.3,396.2,374.3,404.1,421,480,487.2,539.29999999999995]
["Sulfur, thousand tonnes",8.5,57.2,62.2,66.099999999999994,82.5,97.5,108,107.7,117,124,136.80000000000001,180,136,160,186.4]
["including abroad","–","–","–","–","–",2,3.3,2.9,12,15.6,17.8,22,24,23,13.8]
["Wide fraction of light hydrocarbons, thousand tonnes","–","–","–","–","–","–","–","–","–","–",28,131.5,145.4,144.30000000000001,136.19999999999999]
["Gazprom neftekhim Salavat**"]
["Motor gasoline, thousand tonnes","x","x","x","x","x","x","x",501.5,773.3,703.4,781.3,596.1,916.1,1030.4000000000001,1368.1]
["Diesel fuel, thousand tonnes","x","x","x","x","x","x","x",1396.9,2558.4,2548.1,1600.5,1512.9,1500.3,1965.5,2025.6]
["Heating oil, thousand tonnes","x","x","x","x","x","x","x",970.2,1303.8,1596.7,840.6,721.1,561.5,352.4,325.2]
["Sulfur, thousand tonnes","x","x","x","x","x","x","x",16.600000000000001,29.5,34.4,33.1,29.1,29.7,35.799999999999997,37]
["Marine fuel, thousand tonnes ","x","x","x","x","x","x","x","–","–",62.7,505.3,767.2,696.3,375.6,304.5]
["Bitumen, thousand tonnes","x","x","x","x","x","x","x",96.9,120.9,74.099999999999994,26.2,91,92.9,193.8,178.1]
["Monomers, thousand tonnes","x","x","x","x","x","x","x",97.8,242.6,262.2,243.4,294,264.89999999999998,335.8,293.3]
["Polymers and products, thousand tonnes","x","x","x","x","x","x","x",61.3,133.19999999999999,161.80000000000001,157.9,179.1,154.30000000000001,185.6,171.6]
["Products of organic synthesis, \nthousand tonnes","x","x","x","x","x","x","x",87.4,86.8,83.5,90.4,89.6,44.7,71.3,49.7]
["Mineral fertilizers and raw materals, \nthousand tonnes ","x","x","x","x","x","x","x",326.10000000000002,752.1,778.2,775.9,953,913.2,836.4,799.7]
["Wide fraction of light hydrocarbons, thousand tonnes","x","x","x","x","x","x","x","–","–",18.7,38.299999999999997,8.8000000000000007,54.9,50.7,35.200000000000003]
["Sibur Holding***"]
["Dry gas, mmcm",10951,12075.6,9290.2000000000007,4433,"x","x","x","x","x","x","x","x","x","x","x"]
["Liquefied hydrocarbon gases, thousand tonnes",2891,2942.8,2861.7,1503.1,"x","x","x","x","x","x","x","x","x","x","x"]
["Wide fraction of light hydrocarbons,\nthousand tonnes",2465,3015.3,2061.4,933.9,"x","x","x","x","x","x","x","x","x","x","x"]
["Stable gaseous gasoline, thousand tonnes ",562,613,677,284,"x","x","x","x","x","x","x","x","x","x","x"]
["Monomers, thousand tonnes",1848,2122.5,1997.9,1096.3,"x","x","x","x","x","x","x","x","x","x","x"]
["Polymers and products, thousand tonnes",469,490,506,290,"x","x","x","x","x","x","x","x","x","x","x"]
["Synthetic rubbers, thousand tonnes",584,624,553.4,267.89999999999998,"x","x","x","x","x","x","x","x","x","x","x"]
["Products of organic synthesis,\nthousand tonnes",990,1109,1134.5999999999999,544.5,"x","x","x","x","x","x","x","x","x","x","x"]
["Methyl tert-butyl ether, thousand tonnes",379,371.5,458.4,243.5,"x","x","x","x","x","x","x","x","x","x","x"]
["Mineral fertilizers and its raw materals, thousand tonnes",1482,1360.4,1598.1,1103.4000000000001,"x","x","x","x","x","x","x","x","x","x","x"]
["Tyres, million units",13.4,12.8,13.6,6.5,"x","x","x","x","x","x","x","x","x","x","x"]
["* Taking into account the output of refined products of OOO Gazprom dobycha shelf Yuzhno-Sakhalinsk, OOO Sibmetakhim, AO Tomskgazprom. Also taking into account the output of refined products of \nOOO Gazprom dobycha Irkutsk and OOO Servisneftegaz; the financial results of these entities are not included in Gazprom Group’s IFRS consolidated financial statements due to insignificance."]
["**  The results are shown since June 1, 2012."]
["*** The results are shown prior to Sibur Holding deconsolidation since Q3 2008."]
[]
["Back to Contents"]

{"sheet":"Refineries, processing plants","index":25,"n_rows":53,"n_cols":7,"rows_kept":53,"cut":false,"hidden":false,"merged":[[49,5,49,6],[50,5,50,6],[44,5,44,6],[45,5,45,6],[46,5,46,6],[47,5,47,6],[48,5,48,6],[2,6,3,6],[43,0,43,5],[37,6,38,6],[39,0,40,0],[39,1,40,1],[39,2,40,2],[39,3,40,3],[39,5,40,5],[39,6,40,6],[37,0,38,0],[37,1,38,1],[37,3,38,3],[37,5,38,5],[25,6,36,6],[25,1,36,1],[25,2,36,2],[4,6,5,6],[7,0,8,0],[7,1,8,1],[7,2,8,2],[7,3,8,3],[7,5,8,5],[7,6,8,6],[4,5,5,5],[4,0,5,0],[4,1,5,1],[4,2,5,2],[4,3,5,3],[0,0,0,5],[2,0,3,0],[2,1,3,1],[2,2,3,2],[2,3,3,3],[2,5,3,5],[2,4,3,4],[11,0,12,0],[11,1,12,1],[11,2,12,2],[41,0,41,5],[25,3,36,3],[25,5,36,5],[25,0,36,0],[37,2,38,2]]}
["Hydrocarbon refining/processing, gas chemical and petrochemical plants"]
["Name","Company","Location","Year of\ncommissioning /\nestablishment","Annual throughput /\nproduction capacity\nas at 31 December 2019","Product range","Major investment projects implemented in 2019"]
["Astrakhan GPP","OOO Gazprom\npererabotka","Astrakhan",1986,"12.0 bcm of natural gas,\n7.3 mm tonnes of unstable gas condensate\n2.5 mm tonnes of stable gas condensate and oil","Dry marketable gas, stable gas condensate, liquefied gas, wide fraction of light hydrocarbons, automobile gasoline, light gas condensate distillate, diesel fuel, fuel oil, heavy gas condensate distillate, gas condensate middle distillate, gas sulphur","The Renovation of Phase 1 and Phase 2 of the Astrakhan Gas Processing Plant into an Integrated Operation construction project.\nThe project is expected to offer a guaranteed condensate and NGL processing capacity equivalent to 12.0 bcm of feedstock gas per year."]
[]
["Orenburg GPP","OOO Gazprom\npererabotka","Orenburg",1974,"37.5 bcm of natural gas;","Dry marketable gas, stable gas condensate, liquefied gas, wide fraction of light hydrocarbons, gas sulphur, odorant","–"]
[null,null,null,null,"6.26 mm tonnes of unstable gas\ncondensate and oil"]
["Orenburg Helium Plant","OOO Gazprom\npererabotka","Orenburg",1978,"15.0 bcm of natural gas","Helium gaseous and liquefied, dry marketable gas, ethane fraction, liquefied gases, wide fraction of light hydrocarbons, pentane-hexane fraction, hydrocarbon fraction","–"]
["Sosnogorsk GPP","OOO Gazprom\npererabotka","Sosnogorsk,\nRepublic\nof Komi",1946,"3.0 bcm of natural gas;","Dry marketable gas, liquefied gas, stable gas condensate, carbon black","–"]
[null,null,null,null,"2.5 mm tonnes of unstable\ncondensate (stabilisation)"]
["Urengoy Condensate\nPre-transportation\nPreparation Plant","OOO Gazprom\npererabotka","Novy\nUrengoy",1985,"13.67 mm tonnes of unstable\n(non-degassed) condensate\n(de-ethanisation and\nstabilisation) or 12.2 mm tonnes\nof degassed condensate","De-ethanised gas condensate, stable gas condensate, liquefied gas, wide fraction of light hydrocarbons, diesel fuel, light distillate of gas condensate, jet fuel TS-1, de-ethanised gas","–"]
["Surgut Condensate\nStabilisation Plant","OOO Gazprom\npererabotka","Surgut",1985,"4.0 mm tonnes of stable gas condensate and oil or\n12.05 mm tonnes of oil and gas condensate mixture (stabilisation)","Stable gas condensate (oil), motor gasoline, diesel fuel, TS-1 jet fuel, liquefied gas, wide fraction of light hydrocarbons, pentane-hexane fraction, light distillate of gas condensate","Construction of a propane fraction methanol removal unit with a marketable\nproduct drying module (commissioned in 2019)."]
["Plant for the\nProduction\nof Methanol,\nMethanol Formalin\nand Carbamide-\nFormaldehyde\nConcentrate","OOO Sibmetakhim","Tomsk",1983,"Feedstock:\n930.98 mmcm of gas.\nProduction: \n884.55 thousand\ntonnes of methanol","Methanol","■ Methanol capacity expansion project (Phase 2).\n■ Retrofitting."]
[null,null,null,2016,"Feedstock:\n49.94 thousand tonnes of methanol\n15.49 thousand tonnes of urea\nProduction:\n61.51 thousand tonnes of urea-formaldehyde concentrate \nUFC-85\n15.05 thousand tonnes of formalin","Formalin methanol,\nurea-formaldehyde concentrate","Retrofitting."]
["Omsk Refinery","AO Gazprom neft —\nOmsk Refinery","Omsk",1955,"22.23 mm tonnes of oil\nand gas condensate","Motor gasoline, stable natural gasoline, diesel fuel, jet fuel, fuel oil, aromatic hydrocarbons, liquefied hydrocarbon gases, coke, oil bitumens, sulphur, hydrocracking catalysts","Projects to increase production depth:\n■ Construction of an advanced oil refining facility comprising a hydrocracking and hydrodesulphirisation unit with an annual capacity of 2.0 mm tonnes of vacuum gasoil; hydrogen and sulphur production unit.\n■ Construction of a combined primary refining unit ELOU-AVT (desalter and atmospheric/vacuum distillation unit) with an annual throughput of 8.4 mm tonnes of oil and 1.2 mm tonnes of stable gas condensate.\n■ Construction of a delayed coking unit with an annual capacity of 2.0 mm tonnes of residual asphalt.\nOther projects:\n■ Construction of a diesel fuel hydrotreating and dewaxing plant with an annual capacity of 2.5 mm tonnes (commissioned in 2019).\n■ Revamp of the 21-10/3M delayed coking unit with an annual capacity of \n740 thousand tonnes annually.\n■ Construction of a feed pre-treatment unit for needle coke production with an annual capacity of 38 thousand tonnes.\n■ Upgrade of a catalytic reformer increasing the annual capacity from 600 to \n900 thousand tonnes.\n■ Construction of treatment facilities with an hourly throughput of 3,450 cubic metres of wastewater.\n■ Construction of a catalytic cracking regeneration gas treatment unit (commissioned in 2019).\n■ Upgrade of the aromatics complex.\n■ Upgrade of the heavy product loading rack.\n■ Upgrade of the flare facilities.\n■ TSU-0.5 hybrid bunker fuel preparation, storage and shipping process (commissioned in 2019).\n■ Construction of a 1 MW solar power plant (commissioned in 2019)."]
["Moscow Refinery","AO Gazprom neft —\nMoscow Refinery","Moscow",1938,"12.76 mm tonnes of oil","Motor gasoline, diesel fuel, jet fuel, fuel oil, oil bitumens, liquefied hydrocarbon gases, sulphur","Projects to increase production depth:\n■ Construction of a combined refining unit with an annual throughput of 6,0 mm tonnes of oil.\n■ Construction of an advanced oil refining facility comprising a hydrocracking and a delayed coking unit with an annual capacity of 2.0 mm tonnes of vacuum gasoil and \n2.4 mm tonnes of tar.\nOther projects:\n■ Construction of an on-spot automatic loading station to load diesel fuel, marine fuel, and motor gasoline with a maximum daily capacity of 5.8 thousand tonnes per day.\n■ Construction of a single-stage kerosene fraction hydrotreating unit with an annual capacity of 1.26 mm tonnes.\n■ Construction of the elemental sulphur production unit.\n■ Construction of a light product loading rack with a maximum capacity of 6.6 thousand tonnes per day (commissioned in 2019)."]
["Oil refinery\n(Pancevo)","NIS","Pancevo\n(Serbia)",1968,"4.6 mm tonnes of oil","Motor gasoline, stable natural gasoline, diesel fuel, jet fuel, fuel oil, benzene, toluene, liquefied hydrocarbon gases, oil bitumen, polymer-modified bitumen, sulphur, and propylene","Projects to increase production depth:\n— Construction of an advanced oil refining facility with an annual capacity of \n700 thousand tonnes.\nOther projects:\n— Upgrade of the catalytic cracking unit, increasing annual capacity \nfrom 600 to 660 thousand tonnes.\n— Construction of an ETBE unit with an annual capacity of 50 thousand tonnes."]
["Oil refinery\n(Novi Sad)","NIS","Novi Sad\n(Serbia)",1968,"Suspended","Motor gasoline, diesel fuel, fuel oil, and bitumens","–"]
["Oil and lubricant\nblending plant (Bari)","Gazpromneft\nLubricants Italia S.p.A.","Bari\n(Italy)",1976,"30 thousand tonnes of oils\nand 6 thousand tonnes\nof plastic lubricants","Industrial oils, motor oils, lubricants","–"]
["Moscow Lubricants\nPlant (MZSM)","AO Gazpromneft\nMZSM","Fryazino,\nMoscow Region",2007,"62 thousand tonnes of oils","Motor, transmission and industrial oils","Upgrade of production facilities"]
["Omsk Lubricants Plant\n(OZSM)","OOO Gazprom \nneft — Lubricants","Omsk",2009,"310 thousand tonnes of oils","Motor and industrial oils","Construction of a hydro-dewaxing unit to treat the hydrocracking residue and produce group II and III base oils"]
["Ryazan Bituminous\nMaterials Experimental\nPlant (RZBM)","OOO Gazpromneft —\nRyazan bituminous\nmaterials","Ryazan","2011\n(PMB binder\nunit)","120 thousand tonnes\nof PMB binder","PMB binder","–"]
["Bitumen plant","TOO Gazpromneftbitumen\nKazakhstan","South\nKazakhstan\nRegion\n(Kazakhstan)",2011,"280 thousand tonnes","Road and construction bitumen","–"]
["OOO NOVA-Brit","OOO NOVA-Brit","Vyazma,\nSmolensk\nRegion",2005,"80 thousand tonnes","Bituminous products used in road and airfield construction, housing and utilities, bridge construction and metro engineering: bitumen sealers and mastics, PMB joint tapes, bitumen emulsions and PMB binders, PMB emulsion mastics, road coverings, liquid rubber","–"]
["AO SOVKHIMTEKH,\nOOO Poliefir\nOOO BCV-HIM","Rospolikhim Group\nof Companies","Nizhny\nNovgorod",2001,"5 thousand tonnes of oil","Aviation, hydraulic, tempering, compressor, vacuum, transmission, refrigerator, industrial, and rolling mill oils, cooling lubricants, plasticisers, preservative lubricants, deicing fluid, vinylin, additives, lubricant bases","–"]
["Refinery","OOO Gazprom\nneftekhim Salavat","Salavat",1955,"10.0 mm tonnes of oil\nand stable gas condensate","Motor gasoline, pentane-isopentane fraction, isomerisation product, isopentane fraction, petroleum benzene, petroleum toluene, diesel fuel, fuel oil, feedstock for viscous road construction bitumens, technical sulphur, and petroleum bitumens","■ Construction of a hydrogen unit with a pressure swing adsorption (PSA) facility with an hourly capacity of 25 thousand normal cubic metres of hydrogen, as well as PSA facilities with an hourly capacity of 42 thousand normal cubic metres of feedstock and an hourly capacity of at least 25 thousand normal cubic metres of hydrogen*.\n■ Construction of a catalytic cracking facility with an annual capacity of 1.095 mm tonnes of vacuum gasoil.\n■ Construction of a sulphur-alkaline wastewater neutralisation plant with a capacity of \n50 tonnes per hour.\n■ Construction of an elemental sulphur production unit with an annual capacity of \n60 thousand tonnes.\n■ Upgrade of vacuum gas oil hydrotreaters with an annual capacity of 1.2 mm tonnes of feedstock and a pre-treatment unit."]
["Monomer plant","OOO Gazprom\nneftekhim Salavat","Salavat",1991,"165.7 thousand tonnes of polyethylene;","Ethylene, propylene, benzene, pentaneisoprenecyclopentadiene fraction, butylene-butadiene fraction, heavy pyrolysis residue, styrene, etylbenzene, polystyrenes, high-density polyethylene, normal industrial butyl alcohol, industrial isobutyl alcohol, 2-ethylhexanol, DOP plasticiser","–"]
[null,null,null,null,"45.9 thousand tonnes of polystyrene;"]
[null,null,null,null,"202.0 thousand tonnes of styrene;"]
[null,null,null,null,"230.0 thousand tonnes of ethylbenzene;"]
[null,null,null,null,"369.0 thousand tonnes of ethylene;"]
[null,null,null,null,"163.0 thousand tonnes of propylene;"]
[null,null,null,null,"152.3 thousand tonnes of benzene;"]
[null,null,null,null,"183.8 thousand tonnes of alcohols;"]
[null,null,null,null,"37.6 thousand tonnes 2-ethylhexanol,"]
[null,null,null,null,"21.9 thousand tonnes of hydrogen;"]
[null,null,null,null,"38.4 thousand tonnes of dioctyl phthalate (DOP) plasticiser;"]
[null,null,null,null,"16.3 thousand tonnes of phthalic anhydride"]
["Gas chemical plant","OOO Gazprom\nneftekhim Salavat","Salavat",1964,"604.8 thousand tonnes of ammonia;","Ammonia, urea, ammonia water","–"]
[null,null,null,null,"701.7 thousand tonnes of urea"]
["Acryl acid and butyl\nacrylate plant","OOO Gazprom\nneftekhim Salavat","Salavat",2016,"80 thousand tonnes\nof butyl acrylate;","Butyl acrylate, glacial acrylic acid","–"]
[null,null,null,null,"35 thousand tonnes\nof glacial acrylic acid\n(polymer-grade)"]
["* Given in normal cubic meters of gas, which correspond to cubic meters of gas measured under pressure of one atmosphere at 0°C."]
[]
["Additionally, Gazprom Group has access to the following capacities:"]
["Name","Company","Location","Year of\ncommissioning/\nestablishment","Annual throughput /\nproduction capacity\nas at 31 December 2019","Product range"]
["Slavneft-YANOS","PJSC Slavneft-YANOS","Yaroslavl","1958−1961","15.0 mm tonnes of oil","Motor gasoline; stable natural gasoline; diesel fuel; jet fuel; fuel oil; oils; aromatic hydrocarbons; sulphur; sulphuric acid; paraffin and wax products"]
["Mozyr Refinery","OAO Mozyr Oil Refinery","Mozyr\n(Republic\nof Belarus)",1975,"14.0 mm tonnes of oil","Motor gasolines; lamp oil; diesel fuel; home heating oil; fuel oil; oil bitumens; LHGs; vacuum gasoil; benzene"]
["NPP Neftekhimiya","OOO NPP Neftekhimiya\n(joint venture with PAO SIBUR Holding)","Moscow",2003,"140.0 thousand tonnes","Polypropylene"]
["Poliom","OOO Poliom\n(joint venture with PAO SIBUR Holding)","Omsk",2013,"218.4 thousand tonnes","Polypropylene"]
["Total — PMB","OOO Gazpromneft-Total PMB\n(joint venture with Total)","Moscow",2014,"40.0 thousand tonnes","Polymer-modified bitumens and PMB binder;\nbitumen emulsion"]
["Yuzhno-Priobskiy GPP","OOO Yuzhno-Priobskiy GPP\n(joint venture with PAO SIBUR Holding)","Khanty-\nMansiysk",2015,"900.0 mmcm of APG","Dry stripped gas; natural gas liquids"]
[]
["Back to Contents"]

{"sheet":"Refining, processing projects","index":26,"n_rows":26,"n_cols":6,"rows_kept":26,"cut":false,"hidden":false,"merged":[[0,0,0,4],[5,3,5,4],[1,3,1,4],[2,3,2,4],[3,3,3,4],[4,3,4,4],[8,0,8,5],[13,0,13,5],[6,3,6,4],[19,0,19,5],[21,0,21,4],[15,0,15,4],[10,0,10,4]]}
["Major new hydrocarbon processing, gas chemical and petrochemical projects of Gazprom Group"]
["Project name and goal","Company","Location","Annual design throughput /\nproduction capacity",null,"Comissioning \nyear"]
["Novourengoysky Gas Chemical Complex.\nPurpose — process de-ethanised condensate gases from the Nadym-Pur-Taz region.\nPotential target markets for marketable products include Russia, Europe and Asia.","OOO NGHK","Novy Urengoy","1,456 thousand tonnes of ethane-containing gas\n400 thousand tonnes of low-density polyethylene\n",null,"Will be determined following facility diagnostics"]
["Amur GPP.\nGoal: support comprehensive processing of natural gas from the Yakutsk and Irkutsk gas production centres.","OOO Gazprom\npererabotka\nBlagoveschensk","Svobodnensky\nDistrict of the\nAmur Region","Processing of 42.0 bcm of natural gas\nProduction of:\n39.0 bcm of marketable gas\nup to 2.0 mm tonnes of ethane\nup to 1.6 mm tonnes of LHGs\nup to 0.2 mm tonnes of pentane-hexane fraction\n60.0 mmcm of helium*",null,"First start-up complex — 2021,\nsecond start-up complex — 2022,\nthird start-up complex — 2023,\nfourth start-up complex — 2024,\nfifth start-up complex — 2025"]
["A stabilisation unit for Achimov deposit condensate from the Nadym-Pur-Taz region.\nGoal: set-up a mechanism in the north of the Tyumen Region to process and transport heavy paraffinic products (Achimov deposit oil and condensate).","OOO Gazprom\npererabotka","Purovsky District,\nYamal-Nenets\nAutonomous Area","Unstable condensate:\n4.0 mm tonnes\nDe-ethanised condensate:\n2.4 mm tonnes\nStable condensate:\n1.2 mm tonnes\nDe-ethanised gases:\n0.4 bcm",null,2019]
["A gas-to-olefins complex for conversion of natural gas to ethylene and propylene and further conversion of the olefins to petrochemical derivatives at OOO Gazprom neftekhim Salavat.\nPurpose — natural gas monetisation through production of high value-added products.","OOO Gazprom\nneftekhim Salavat","Salavat","Future feedstock\nvolumes — 1.5–3 bcm\nof natural gas*",null,2025]
["Catalyst production.\nObjectives:\n— Creation of a new knowledge-intensive business unit at PAO Gazprom Neft for production and servicing of catalytic cracking, hydrotreatment and hydrocracking catalysts;\n— Addressing import substitution and own innovation commercialisation;\n— Launching a large-scale high-tech production of modern effective catalysts for Gazprom Neft’s refineries as well as other refineries in Russia, the CIS and far abroad countries.","OOO Gazpromneft — CS","Omsk","21 thousand tonnes of catalysts",null,2021]
["* Given in normal cubic meters of gas, which correspond to cubic meters of gas measured under pressure in one atmosphere at 0°C."]
["Note. As at 31 December 2019. Timelines for commissioning and ramp-up may be adjusted subject to the energy market environment."]
[]
["Prospective hydrocarbon refining and processing, gas chemical and petrochemical projects where Gazprom Group participates"]
["Project\nand purpose","Company","Location","Gazprom Group\nterms of participation","Annual processing /\nproduction design capacity","Comissioning \nyear"]
["Integrated complex for gas processing and liquefaction near the seaport of Ust-Luga.\nPurpose — comprehensive processing of ethane-rich gas from the Nadym-Pur-Taz region of the Yamal-Nenets Autonomous Area.","OOO RusKhimAlyans (established on a parity basis by OOO Gazprom invest RGK (a subsidiary of OOO Gazprom mezhregiongaz) and \nAO RusGazDobycha)","Leningrad\nRegion,\nKingisepp\nDistrict","Financing of the project by PJSC Gazprom:\n50% — prior to obtaining project finance\n15% — after obtaining project finance.","Processing of 45 bcm of natural gas with production of dry stripped gas, LPG, ethane and pentane-hexane fractions","First stage — late 2023,\nSecond stage — late 2024"]
["Note. As at 31 December 2019. Timelines for commissioning and ramp-up may be adjusted subject to the energy market environment."]
[]
["Gazprom Group’s projects for transportation of liquid hydrocarbons from the Nadym-Pur-Taz region"]
["Project name","Company","Location",null,"Annual design capacity","Commissioning\nyear"]
["Urengoy oil pumping station","OOO Gazprom\npererabotka","Purovsky District,\nYamal-Nenets\nAutonomous Area",null,"Transportation of \n5.0 mm tonnes\nof hydrocarbons",2019]
["Urengoy — Purpe\noil and condensate pipeline","OOO Gazprom\npererabotka","Purovsky District,\nYamal-Nenets\nAutonomous Area",null,"Transportation of \n5.0 mm tonnes\nof hydrocarbons",2018]
["Note. As at 31 December 2019. Timelines for commissioning and ramp-up may be adjusted subject to the energy market environment."]
[]
["Gazprom Group’s capacities to transport liquid hydrocarbons from the Nadym-Pur-Taz region"]
["Project name","Company","Location",null,"Annual design\nproduction capacity","Commissioning\nyear"]
["Urengoy — Surgut gas condensate pipeline (Line 2).\nThe 107 km — 288 km section.","OOO Gazprom\npererabotka","Purovsky District,\nYamal-Nenets\nAutonomous Area",null,"Transportation of \n12.0 mm tonnes\nof hydrocarbons",2018]
[]
["Back to Contents"]

{"sheet":"Power and heat generation","index":27,"n_rows":94,"n_cols":14,"rows_kept":94,"cut":false,"hidden":false,"merged":[[0,0,0,6],[1,0,1,6],[47,0,47,6],[89,0,89,13],[48,1,48,13],[90,0,90,9],[91,0,91,13],[2,1,2,13],[44,0,44,9],[45,0,45,13],[43,0,43,13]]}
["Power and Heat Generation"]
["Electric power and heat generating capacity of Gazprom Group"]
[null,"As at 31 December"]
[null,2007,2008,2009,2010,2011,2012,2013,2014,2015,2016,2017,2018,2019]
["Electric power generating capacity, MW"]
["In Russia"]
["Gazprom energoholding"]
["PAO Mosenergo",11117,11904,11918,11900,12305,12299,12262,12737,12915,12963,12873,12798,12825]
["PAO MIPC and subsidiaries*","х","х","х","х","х","х",193,166,129,"–","–","–","–"]
["PAO OGK-2","х",8695,8695,8707,17869,18448,17995,18422,18024,18955,18997,18828,19012]
["OAO OGK-6**","х",9052,9052,9162,"х","х","х","х","х","х","х","х","х"]
["PAO TGC-1 and subsidiaries","х","х",6313,6266,6837,6870,7238,7164,7057,6951,6950,6950,6918]
["Total",{"$f":"B8","v":11117},{"$f":"C8+C10+C11","v":29651},{"$f":"D8+D10+D11+D12","v":35978},{"$f":"E8+E10+E11+E12","v":36035},{"$f":"F8+F10+F12","v":37011},37617,37688,38489,38125,38869,38820,38576,38755]
["Other assets"]
["Gazprom neftekhim Salavat***","х","х","х","х","х","х",541,541,541,893,893,893,893]
["Other","–","–","–","–","–","–","–","–","–",3,3,3,3]
["Total","х","х","х","х","х","х",541,541,541,{"$f":"K15+K16","v":896},896,896,896]
["Total in Russia",11117,29651,35978,36035,37011,37617,38229,39030,38666,39765,39716,38472,39651]
["Abroad"]
["ZAO Kaunasskaya teplofikatsionnaya elektrostantsya (Lithuania)",170,170,170,170,170,170,"х","х","х","х","х","х","х"]
["ZAO Gazprom Armenia","х","х","х","х",467,467,467,467,467,467,467,467,467]
["Other","–","–","–","–","–","–","–","–","–",13,13,12,12]
["Total abroad",170,170,170,170,637,637,467,467,467,480,480,479,479]
["Total",{"$f":"B18+B23","v":11287},29821,36148,36205,37648,38254,38696,39497,39133,40245,40196,39951,40130]
["Heat generating capacity, Gcalh"]
["In Russia"]
["Gazprom energoholding"]
["PAO Mosenergo",34297,34167,34900,34852,35083,35011,34809,40371,"43 315",42894,42761,43136,43211]
["PAO MIPC and subsidiaries*","х","х","х","х","х","х",17529,10546,6845,7036,7236,7091,6661]
["PAO OGK-2","х",1700,1700,1649,4316,4473,4474,4336,4336,4169,4162,3934,3959]
["OAO OGK-6**","х",2700,2700,2704,"х","х","х","х","х","х","х","х","х"]
["PAO TGC-1 and subsidiaries","х","х",14362,14426,14616,14497,14234,14152,14142,14532,13646,13745,13487]
["Total",{"$f":"B28","v":34297},{"$f":"C28+C30+C31","v":38567},{"$f":"D28+D30+D31+D32","v":53662},{"$f":"E28+E30+E31+E32","v":53631},{"$f":"F28+F30+F32","v":54015},{"$f":"G28+G30+G32","v":53981},{"$f":"H28+H30+H32+H29","v":71046},{"$f":"I28+I30+I32+I29","v":69405},68638,68631,67805,67906,67318]
["Other assets"]
["Gazprom neftekhim Salavat***","х","х","х","х","х","х",1619,1619,1619,2352,2352,2352,2429]
["Other","–","–","–","–","–","–","–","–","–",759,801,518,489]
["Total","–","–","–","–","–","–",1619,1619,1619,3111,3153,2870,2918]
["Total in Russia",{"$f":"B33","v":34297},38567,53662,53631,54015,53981,{"$f":"H33+H37","v":72665},{"$f":"I33+I37","v":71024},70257,70742,70958,70776,70236]
["Abroad"]
["ZAO Kaunasskaya teplofikatsionnaya elektrostantsya (Lithuania)",894,894,894,894,894,894,"х","x","x","x","x","x","x"]
["Other","–","–","–","–","–","–","–","–","–",9,9,9,28]
["Total abroad",{"$f":"B40","v":894},894,894,894,894,894,"–","–","–",9,9,9,28]
["Total",{"$f":"B38+B42","v":35191},39461,54556,54525,54909,54875,{"$f":"H38","v":72665},{"$f":"I38","v":71024},{"$f":"J38","v":70257},{"$f":"K38+K42","v":70751},{"$f":"L38+L42","v":70967},70785,70264]
["* Results are shown effective from taking control. Starting from 2015, heat generating capacity includes PAO MIPC’s subsidiaries OOO TSK Novaya Moskva and OOO TSK Mosenergo."]
["** In November 2011 OAO OGK-6 merged with OGK-2."]
["*** Figures provided since 1 January 2013. Since 2018, the installed heat generation capacity figures for Gazprom neftekhim Salavat’s Novo-Salavatskaya CHPP \nhave included the installed heat generation capacities of steam boilers. "]
[]
["Electric power and heat generated by Gazprom Group"]
[null,"For the year ended 31 December"]
[null,2007,2008,2009,2010,2011,2012,2013,2014,2015,2016,2017,2018,2019]
["Electric power generation, billion kWh"]
["In Russia"]
["Gazprom energoholding"]
["PAO Mosenergo",31.9,64.27,61.75,64.97,64.650000000000006,61.33,58.64,56.67,54.71,59.07,57.87,58.31,60.11]
["PAO MIPC and subsidiaries*","х","х","х","х","х","х",0.39,0.41,0.13,"–","–","–","–"]
["PAO OGK-2","х",24.9,47.17,47.59,79.8,75.2,70.66,68.69,64.36,67.09,63.43,58.92,54.69]
["OAO OGK-6**","х",19.5,28.953028563,34.89,"х","х","х","x","x","x","x","x"]
["PAO TGC-1 and subsidiaries","х","х","х",27.16,28.36,30.39,29.3,26.43,25.81,27.67,29.51,29.33,28.27]
["Total",{"$f":"B54","v":31.9},{"$f":"C54+C56+C57","v":108.66999999999999},{"$f":"D54+D56+D57","v":137.87302856299999},{"$f":"E54+E56+E57+E58","v":174.60999999999999},{"$f":"F54+F56+F58","v":172.81},{"$f":"G54+G56+G58","v":166.92000000000002},158.99,152.19999999999999,145.01,153.82999999999998,150.81,146.56,143.07]
["Other assets"]
["Gazprom neftekhim Salavat***","х","х","х","х","х","х",2.4700000000000002,2.37,2.35,2.9,4.6500000000000004,4.9400000000000004,4.92]
["Other","–","–","–","–","–","–","–","–","–",0,0,0,0.01]
["Total","–","–","–","–","–","–",2.4700000000000002,2.37,2.35,2.9,4.6500000000000004,4.9400000000000004,4.93]
["Total in Russia",{"$f":"B59","v":31.9},108.66999999999999,137.87302856299999,{"$f":"E59","v":174.60999999999999},172.81,166.92000000000002,161.46,154.57,147.36000000000001,156.72999999999999,155.46,151.5,148]
["Abroad"]
["ZAO Kaunasskaya teplofikatsionnaya elektrostantsya (Lithuania)",0.6,0.71,0.6,0.4,0.4,0.3,"х","х","х","х","х","х"]
["ZAO Gazprom Armenia","х","х","х","х","х",0.9,1.08,0.86,0.64,0.69,0.99,1.62,0.94]
["Other","–","–","–","–","–","–","–","–","–",0.09,0.1,7.0000000000000007E-2,0.08]
["Total abroad",{"$f":"B66","v":0.6},{"$f":"C66","v":0.71},{"$f":"D66","v":0.6},{"$f":"E66","v":0.4},{"$f":"F66","v":0.4},{"$f":"G66+G67","v":1.2},1.08,0.86,0.64,0.78,1.0900000000000001,1.69,1.02]
["Total",{"$f":"B64+B69","v":32.5},109.37999999999998,138.47302856299999,175.01,173.21,168.12,162.54,155.43,148,157.51,156.55000000000001,153.19,149.02000000000001]
["Heat generation, mm Gcalh"]
["In Russia"]
["Gazprom energoholding"]
["PAO Mosenergo",28,62.44,65.41,69.87,66.41,68.349999999999994,67.599999999999994,70.319999999999993,71.680000000000007,81.83,79.45,82.29,75.37]
["PAO MIPC and subsidiaries*","x","x","x","x","x","x",7.7,18.43,10.74,6.09,5.79,10.17,9.07]
["PAO OGK-2","x",1.2,2.4,2.38,6.33,6.32,6.81,7.09,6.52,6.9,6.76,7.01,6.65]
["OAO OGK-6**","x",2.2000000000000002,4.38,4.3499999999999996,"x","x","x","x","x","x","x","x","x"]
["PAO TGC-1 and subsidiaries","x","x","x",28.82,26.05,26.44,25.32,24.34,23.02,24.44,24.71,24.89,24.17]
["Total",{"$f":"B74","v":28},{"$f":"C74+C76+C77","v":65.84},{"$f":"D74+D76+D77","v":72.19},{"$f":"E74+E76+E77+E78","v":105.41999999999999},{"$f":"F74+F76+F78","v":98.789999999999992},{"$f":"G74+G76+G78","v":101.10999999999999},107.43,120.18,113.51,123.36,120.77,124.36,115.26]
["Other assets"]
["Gazprom neftekhim Salavat***","x","x","x","x","x","x",5.0999999999999996,5.04,5.1100000000000003,5.44,5.78,6.07,6.31]
["Other","–","–","–","–","–","–","–","–","–",0.69,0.79,0.82,0.81]
["Total","–","–","–","–","–","–",5.0999999999999996,5.04,5.1100000000000003,6.13,6.57,6.89,7.12]
["Total in Russia",{"$f":"B79","v":28},{"$f":"C79","v":65.84},72.19,105.41999999999999,98.789999999999992,101.10999999999999,112.53,125.22,118.62,129.49,127.34,131.25,122.38]
["Abroad"]
["ZAO Kaunasskaya teplofikatsionnaya elektrostantsya (Lithuania)",1.3,1.26,1.3,1.4,1.4,1.4,"x","x","x","x","x","x","x"]
["Other","–","–","–","–","–","–","–","–","–",0,"–","–","–"]
["Total abroad",{"$f":"B86","v":1.3},1.26,1.3,1.4,1.4,1.4,"–","–","–",0,"–","–","–"]
["Total",{"$f":"B84+B88","v":29.3},67.100000000000009,73.489999999999995,106.82,100.19,102.50999999999999,112.53,125.22,118.62,129.49,127.34,131.25,122.38]
["* Results are shown effective from taking control. Starting from 2015, heat generating capacity includes PAO MIPC’s subsidiaries OOO TSK Novaya Moskva and OOO TSK Mosenergo."]
["** In November 2011 OAO OGK-6 merged with OGK-2."]
["*** Figures provided since 1 January 2013. "]
[]
["Back to Contents"]

{"sheet":"Power and heat projects","index":28,"n_rows":35,"n_cols":7,"rows_kept":35,"cut":false,"hidden":false,"merged":[[29,5,29,6],[32,3,32,4],[31,3,31,4],[30,3,30,4],[30,5,30,6],[31,5,31,6],[32,5,32,6],[22,5,22,6],[23,5,23,6],[24,5,24,6],[25,5,25,6],[26,5,26,6],[17,5,17,6],[18,5,18,6],[19,5,19,6],[20,5,20,6],[21,5,21,6],[12,5,12,6],[13,5,13,6],[14,5,14,6],[15,5,15,6],[16,5,16,6],[0,0,0,4],[1,0,1,4],[10,3,10,4],[11,3,11,4],[12,3,12,4],[2,0,3,0],[2,3,2,6],[6,0,6,13],[2,1,3,1],[2,2,3,2],[8,0,8,4],[9,0,9,4],[11,0,13,0],[11,1,12,1],[10,5,10,6],[11,5,11,6],[14,0,18,0],[14,1,16,1],[17,1,18,1],[13,3,13,4],[14,3,14,4],[15,3,15,4],[16,3,16,4],[17,3,17,4],[18,3,18,4],[19,0,22,0],[23,0,25,0],[23,1,25,1],[28,0,28,4],[30,0,31,0],[19,3,19,4],[20,3,20,4],[21,3,21,4],[22,3,22,4],[23,3,23,4],[24,3,24,4],[25,3,25,4],[29,3,29,4]]}
["Investment Projects in Power and Heat"]
["Major projects to create new capacity"]
["Name","Company","Purpose","Project highlights"]
[null,null,null,"Blocks quantity\nand type","Installed electric\ncapacity","Installed\nheat capacity","Commissioning\nyear"]
["Construction of the\nSvobodnenskaya TPP","OOO Svobodnenskaya TPP","Power supply for the Amur GPP","2 steam turbine units","160 MW","To be adjusted",2020]
["Construction of a CHPP\nplant in Pancevo, Serbia","Gazprom Energoholding Serbia TE-TO Pančevo o.o.o.","Heat supply to Pančevo Refinery, as well as electricity sales on the open electricity market","CCGT\n(2 gas turbine units and a steam turbine unit)","200 MW","To be adjusted",2020]
["Note. As at 31 December 2019. Timelines for commissioning and ramp-up may be adjusted subject to the energy market environment."]
[]
["Major upgrade and modernization projects"]
["Projects selected under the procedure of the competitive selection of projects for modernization\nof generating facilities of thermal power plants in Russia"]
["Company","Power plant","Object","Year\nto start\ncapacity supply",null,"Capacity after the\nimplementation of\nthe project, MW"]
["PAO TGC-1","Avtovskaya CHPP","Turbo unit №7",2022,null,116.4]
[null,null,"Turbo unit №6",2024,null,120]
[null,"Severnaya CHPP","Turbo unit №4",2025,null,100]
["PAO OGK-2","Kirishskaya GRES","Steam turbine №2",2022,null,65]
[null,null,"Steam turbine №1",2024,null,60]
[null,null,"Turbo unit №4",2025,null,65]
[null,"Surgutskaya GRES-1","Power unit №13",2025,null,190]
[null,null,"Power unit №16",2025,null,215]
["PAO Mosenergo","CHPP-22","Power unit №10",2024,null,250]
[null,"CHPP-23","Turbo unit №4",2024,null,110]
[null,"CHPP-21","Turbo unit №7",2025,null,80]
[null,"CHPP-25","Power unit №4",2025,null,257]
["OOO Novo-Salavatskaya CHPP","Novo-Salavatskaya CHPP","Turbo unit №5",2022,null,105]
[null,null,"Turbo unit №1",2023,null,50]
[null,null,"Turbo unit №7",2024,null,135]
[null,"Total",null,null,null,1918.4]
[]
["Other upgrade and modernization projects in Russia"]
["Company","Power plant","Object","Year\nto start\ncapacity supply",null,"Capacity after the implementation of the project, MW"]
["PAO TGC-1","Verkhne-Tulomskaya \nhydroelectric power station-12","Hydraulic units № 1–4","2020–2023",null,300]
[null,"Central CHPP","Water boiler house of power plant № 2",2023,null,849]
["PAO Mosenergo","CHPP-22","Equipment of energy block № 9",2021,null,295]
[]
["Back to Contents"]

{"sheet":"Sales of gas","index":29,"n_rows":124,"n_cols":11,"rows_kept":124,"cut":false,"hidden":false,"merged":[[121,0,121,10],[47,1,47,10],[29,1,29,10],[56,1,56,10],[107,1,107,10],[116,1,116,10],[44,0,44,10],[43,0,43,10],[53,0,53,10],[46,0,46,6],[55,0,55,6],[106,0,106,6],[115,0,115,6],[104,0,104,10],[27,0,27,6],[25,0,25,10],[4,1,4,10],[24,0,24,10],[0,0,0,6],[1,0,1,6],[2,0,2,6]]}
["Marketing"]
["Gas Sales"]
["Natural gas sales volumes "]
["(net of VAT, excise tax, and customs duties)"]
[null,"For the year ended 31 December"]
[null,"2010*","2011*",2012,2013,2014,2015,2016,2017,2018,2019]
["RUB mm"]
["Russia",636843,738601,760885,794349,820567,805615,819924,875685,954493,970913]
["Far abroad",1099225,1439069,1469455,1682761,1752147,2165500,2140027,2221217,2951215,2490372]
["FSU countries",450137,637178,529516,420320,411722,429660,309644,292777,348625,356102]
["Retroactive gas price adjustments","–","–",-102749,74393,949,26482,33175,-49092,49338,-16657]
["Total",2186205,2814848,2657107,2971823,2985385,3427257,3302770,3340587,4303671,3800730]
["USD mm**"]
["Russia",20962.574061882817,25131,24481,24901,21258,13138,12269,15018,15175,15020]
["Far abroad",36182.521395655036,48965,47280,52751,45392,35315,32022,38093,46919,38527]
["FSU countries",14816.886109282423,21680,17037,13176,10666,7007,4633,5021,5543,5509]
["Retroactive gas price adjustments","–","–",-3306,2332,25,432,496,-842,784,-258]
["Total",71961.981566820279,95776,85492,93160,77341,55892,49420,57290,68421,58798]
["EUR mm**"]
["Russia",15838,18059,19060,18739,16093,11849,11082,13264,12879,13420]
["Far abroad",27337,35185,36810,39697,34363,31850,28923,33645,39822,34421]
["FSU countries",11195,15579,13264,9916,8075,6319,4185,4435,4704,4922]
["Retroactive gas price adjustments","–","–",2574,1755,19,389,448,-744,666,-230]
["Total",54370,68823,66560,70107,58550,50407,44638,50600,58071,52533]
["* Figures for 2010–2011 were not restated according to IFRS 11 “Joint operations”."]
["** Data is not derived from IFRS consolidated financial statements. Calculation based on the the average currency exchange rate for the respective period."]
[]
["Average natural gas price "]
["(net of VAT, including excise tax and customs duties)"]
[null,"For the year ended 31 December"]
[null,"2010*","2011*",2012,2013,2014,2015,2016,2017,2018,2019]
["Russia"]
["RUB per  mcm",2296.8000000000002,2631.7,2867.9,3264.6,3506.5,3641.3,3815.5,3808.3,3981.3,4118.2]
["USD** per mcm",75.7,89.5,92.3,102.3,90.8,59.4,57.1,65.3,63.3,63.7]
["EUR** per mcm",57,64.3,71.8,77,68.8,53.6,51.6,57.7,53.7,56.9]
["Far abroad"]
["RUB per  mcm",9166.6,11259.1,11969.8,12137.9,13487.2,15057.3,11763.3,11670.5,15499.5,13613]
["USD per mcm",301.8,383,385.1,380.5,349.4,245.6,176,200.2,246.4,210.6]
["EUR** per mcm",227.6,275.3,299.8,286.3,264.5,221.5,159,176.8,209.1,188.2]
["FSU countries"]
["RUB per  mcm",7039,8509.2999999999993,9489.5,8499.9,10115.9,11911,10263.1,9237,10225.9,10175.9]
["USD per mcm",231.7,289.5,305.3,266.5,262.10000000000002,194.2,153.6,158.4,162.6,157.4]
["EUR**  per mcm",174.8,208.1,237.7,200.5,198.4,175.2,138.69999999999999,139.9,138,140.6]
["* Figures for 2010–2011 were not restated according to IFRS 11 “Joint operations”."]
["** Data is not derived from IFRS consolidated financial statements. Calculation based on the the average currency exchange rate for the respective period."]
[]
["Gazprom Group’s natural gas sales volumes, bcm"]
[null,"For the year ended 31 December"]
[null,"2010*","2011*",2012,2013,2014,2015,2016,2017,2018,2019]
["Russia",277.3,280.7,265.3,243.3,234,221.2,214.9,229.9,239.7,235.8]
["Far abroad",148.1,156.6,151,174.3,159.4,184.4,228.3,242,243.3,232.4]
["FSU countries",70.2,81.7,66.099999999999994,59.4,48.1,40.299999999999997,33.200000000000003,35,38.1,38.700000000000003]
["Total",495.6,519,482.4,477,441.5,445.9,476.4,506.9,521.1,506.9]
["* Figures for 2010–2011 were not restated according to IFRS 11 “Joint operations”."]
[]
["Gazprom Group’s natural gas sales volumes to foreign countries, bcm"]
[null,"For the year ended 31 December"]
[null,2010,2011,2012,2013,2014,2015,2016,2017,2018,2019]
["Far abroad"]
["European far abroad countries"]
["Austria",5.6,5.4,5.4,5.2,4.2,5,7.5,9.8000000000000007,9,9.1]
["Belgium",0.5,"–","–","–","–",1.5,2.5,2.7,2.8,1.3]
["Bulgaria",2.2999999999999998,2.5,2.5,2.9,2.8,3.1,3.2,3.3,3.2,2.4]
["Bosnia and Herzegovina",0.2,0.3,0.3,0.2,0.2,0.2,0.2,0.2,0.2,0.2]
["United Kingdom",10.7,12.9,11.7,16.600000000000001,15.5,22.5,25.7,29.1,34.200000000000003,59]
["Hungary",6.9,6.3,5.3,6,5.4,6,5.7,7,7.3,10.5]
["Germany",35.299999999999997,34.1,34,41,40.299999999999997,47.4,57.9,67.099999999999994,65.7,44.9]
["Greece",2.1,2.9,2.5,2.6,1.7,2,2.7,2.9,3.3,2.5]
["Denmark","–","–",0.3,0.3,0.4,0.7,1.7,1.8,1.7,1.7]
["Ireland","–","–",0.3,0.5,0.2,0.2,0.1,0.1,0.3,0.1]
["Spain","–","–","–","–","–","–","–",0.2,0.1,0.5]
["Italy",13.1,17.100000000000001,15.1,25.3,21.7,24.4,24.7,23.7,22.6,22]
["The Netherlands",4.3,4.5,2.9,2.9,4.7,8.4,27.5,17.399999999999999,21.4,16.3]
["Poland",11.8,10.3,13.1,12.9,9.1,8.9,11.1,10.5,9.9,9.6999999999999993]
["Romania",2.6,3.2,2.5,1.4,0.5,0.3,1.7,1.4,1.5,1.1000000000000001]
["North Macedonia",0.1,0.1,0.1,0,0.1,0.1,0.2,0.3,0.2,0.2]
["Serbia",2.1,2.1,1.9,2,1.5,1.9,1.9,2.2000000000000002,2.2000000000000002,2.2000000000000002]
["Slovakia",5.8,5.9,4.3,5.5,4.4000000000000004,3.8,3.7,4.5,5,6.5]
["Slovenia",0.5,0.5,0.5,0.5,0.4,0.5,0.5,0.6,0.5,0.3]
["Turkey",18,26,27,26.7,27.3,27,24.8,29,24,15.4]
["Finland",4.8,4.2,3.7,3.5,3.1,2.8,2.5,2.4,2.6,2.5]
["France",8.9,8.5,8.1999999999999993,8.6,7.6,10.5,12.5,13.3,13.3,13]
["Croatia",1.1000000000000001,"–",0,0.2,0.6,0.6,0.8,2.8,2.8,2.8]
["Czech Republic",9,8.1999999999999993,8.3000000000000007,7.9,0.8,0.9,3.1,3.8,2.6,2.2000000000000002]
["Switzerland",0.3,0.3,0.3,0.4,0.3,0.3,0.3,0.4,0.6,0.3]
["China*",null,null,null,null,null,0.2,0.1,0.8,0.8,1.5]
["including via Power of Siberia trunk gas pipeline",null,null,null,null,null,"x","x","x","x",0.3]
["Other far abroad countries",2.1,1.3,0.8,1.2,6.6,5.2,5.7,4.7,5.5,4.2]
["Total",148.09999999999997,156.6,151,174.3,159.4,184.4,228.3,242,243.3,232.4]
["FSU countries"]
["Azerbaijan","–","–","–","–","–",0.1,"–",0.4,1,"–"]
["Armenia",1.4,1.6,1.7,1.7,1.8,1.8,1.8,1.8,1.8,2]
["Belarus",21.6,23.3,19.7,19.8,19.600000000000001,18.399999999999999,18.3,18.8,20,19.899999999999999]
["Georgia",0.2,0.2,0.2,0.2,0.3,0.3,0.1,0.1,0,0.2]
["Kazakhstan",3.4,3.3,3.7,4.7,5.0999999999999996,4.7,4.7,4.8,6.2,7.7]
["Kyrgyzstan","–","–","–","–",0.1,0.3,0.3,0.3,0.3,0.3]
["Latvia",0.7,1.2,1.1000000000000001,1.1000000000000001,1,1.3,1.3,1.8,1.3,1.7]
["Lithuania",2.8,3.2,3.1,2.7,2.5,2.2000000000000002,0.9,1.4,1.4,0.9]
["Moldova",3.2,3.1,3.1,2.4,2.8,2.9,3,2.7,3,2.9]
["Ukraine",36.5,44.8,32.9,25.8,14.5,7.8,2.4,2.4,2.7,2.8]
["Uzbekistan","–",0.3,"–",0.3,"–","–","–","–","–","–"]
["Estonia",0.4,0.7,0.6,0.7,0.4,0.5,0.4,0.5,0.4,0.3]
["South Ossetia",0,0,0,0,0,0,0,0,0,0]
["Total",70.2,81.7,66.099999999999994,59.4,48.1,40.299999999999997,33.200000000000003,35,38.1,38.700000000000003]
["* In 2010–2014 the volumes of gas sold to China are included in the volumes of sales to Other far abroad countries."]
[]
["Gazprom’s share in domestic gas demand in Russia, bcm"]
[null,"For the year ended 31 December"]
[null,2010,2011,2012,2013,2014,2015,2016,2017,2018,2019]
["Internal gas consumption in Russia",460.3,473,466.1,461.3,458.4,444.3,456.7,468,493.2,481]
["Domestic gas supply through Gazprom’s gas transportation system*",351.7,362.5,360,351.7,353.7,339.4,348.8,351.3,361.7,353.9]
["Gazprom Group supply through GTS (including purchases from companies not included in Gazprom Group)",290.2,288.89999999999998,274.5,249.1,237.8,222,226.9,231.3,244.1,240]
["Domestic gas supply from Gazprom Group production*",288.10000000000002,290.2,274.7,254.5,237,211.2,210.2,216.3,224.9,221.2]
["* Excluding GTS technological needs."]
[]
["Regulated weighted average wholesale prices for natural gas in Russia, RUB per mcm"]
["","For the year ended 31 December"]
[null,null,null,2012,2013,2014,2015,2016,2017,2018,2019]
["All categories of consumers",null,null,2963,3393.2,3656.5,3759.4,3938.2,3988.5,4117.2,4224.8]
["Industrial consumers",null,null,3105,3564.4,3848.9,3958.1,4158.1000000000004,4202.3,4316.3999999999996,4423.7]
["Households",null,null,2428.9,2801.1,3082.9,3253,3422.8,3512.9,3640,3734.4]
["Note. Exclusive of gas volumes supplied pursuant to Resolution of the Government of the Russian Federation No. 333 dated 28 May 2007 \nOn Improvement of State Gas Price Regulation."]
[]
["Back to Contents"]

{"sheet":"Sales of LNG","index":30,"n_rows":27,"n_cols":11,"rows_kept":27,"cut":false,"hidden":false,"merged":[[3,0,3,3],[0,0,0,6],[1,1,1,10],[23,0,23,8],[24,0,24,10]]}
["Gazprom Group’s large scale LNG sales volumes to foreign countries"]
[null,"For the year ended 31 December"]
[null,2010,2011,2012,2013,2014,2015,2016,2017,2018,2019]
["trn BTU"]
["Argentina","–","–","–",18.899999999999999,41.1,16.2,19.7,"–","–","–"]
["UK",3.5,4.7,"–","–","–","–","–","–","–",21.4]
["Egypt","–","–","–","–","–",3.4,3.4,"–","–","–"]
["India","–",18.5,15,6.1,"–",18.7,22.7,9.9,36.1,39.9]
["Soain","–","–","–","–","–","–","–",6.5,2.9,10.9]
["China",19.600000000000001,28.3,19.7,"–",6.6,6.6,3.4,29.4,29.2,41.4]
["Kuwait","–",6.4,"–","–",3,3.3,3.3,16.899999999999999,20.100000000000001,"–"]
["Malaysia","–","–","–","–",6.5,"–","–","–","–","–"]
["Mexico",null,null,"–","–","–","–",6.5,"–","–","–"]
["UAE","–",3.2,"–","–","–","–",6.5,3.1,"–","–"]
["Republic of Korea",19.399999999999999,16.2,9.4,25.2,36.200000000000003,26.5,3.3,13.2,26.4,20.2]
["Thailand","–",3.1,"–","–","–","–","–",3.3,"–","–"]
["Taiwan (China)",16.100000000000001,9.6999999999999993,6.3,"–","–",9.9,26,19.8,19.3,3.3]
["Japan",29.6,19.5,18.399999999999999,29,49.2,78.099999999999994,78.5,56.9,29.7,19.600000000000001]
["FOB deliveries","–","–","–","–",17.100000000000001,7,3,"–",21.4,23.5]
["Total*",88.3,109.6,68.7,72.099999999999994,159.6,169.6,176.5,159.19999999999999,185,180.1]
["Including LNG sales from Sakhalin-2 project",75.2,45.8,29.6,29.7,53.1,86,59.4,72.900000000000006,70.099999999999994,60.1]
["Total, mm tonnes",1.85,2.2999999999999998,1.44,1.51,3.35,3.56,3.71,3.34,3.88,3.78]
["Total, bcm",2.4700000000000002,3.07,1.92,2.02,4.47,4.75,4.9400000000000004,4.46,5.18,5.04]
["* Due to rounding, some totals may not correspond with the sum of the separate figures."]
["Note. Calculated in accordance with the principles underlying management reporting. Parameters calculated using these methods might be not comparable between each other due to differences in the methodologies used for preparing consolidated financial statements and for management reporting."]
[]
["Back to Contents"]

{"sheet":"LNG projects","index":31,"n_rows":17,"n_cols":5,"rows_kept":17,"cut":false,"hidden":false,"merged":[[0,0,0,2],[10,0,10,2],[4,0,4,4],[8,0,8,4],[14,0,14,4],[2,0,2,1],[1,0,1,1]]}
["Gazprom Group’s LNG receiving, storage and regasification capacities"]
["Name",null,"Purpose","Annual design capacity","Comissioning year"]
["A floating storage and regasification unit terminal in the Kaliningrad Region",null,"Ensuring energy security in the Kaliningrad Region","2.7 bcm of gas",2018]
[]
["Promising large scale LNG projects with Gazprom Group’s participation"]
["Name","Company","Target market","Annual design capacity","Comissioning year"]
["Integrated complex for gas processing and liquefaction near the seaport of Ust-Luga","OOO RusKhimAlyans (established on a parity basis by OOO Gazprom invest RGK (a subsidiary of OOO Gazprom mezhregiongaz) and \nAO RusGazDobycha)","Target markets\nto be determined\nfollowing market\nresearch","13 mm tonnes\nof LNG","Phase 1 — late 2023,\nPhase 2 — late 2024"]
["Third technological line of LNG plant within the framework of Sakhalin-2 project","Sakhalin Energy Investment Company Ltd. (a Gazprom Group associate)","Asia-Pacific countries","Up to 5.4 mm tonnes\nof LNG","Will be determined by a joint decision of Sakhalin Energy Investment Company \nLtd. shareholders"]
["Note. As at 31 December 2019. Timelines for commissioning and ramp-up may be adjusted subject to the energy market environment."]
[]
["Promising small and medium scale LNG projects"]
["Name",null,"Target market","Annual design capacity","Commissioning year"]
["LNG production, storage, and shipping complex near the Portovaya compressor station",null,"Markets of the Baltic and North Sea region, LNG vessel bunkering in the Baltic Sea, and, if necessary, LNG supplies to the LNG regasification terminal in the Kaliningrad Region","1.5 mm tonnes\nof LNG",2020]
["LNG plant near Vladivostok",null,"Asia-Pacific including China and Japan, and LNG bunkering, including in Russia’s Far East ","To be determined after the Pre-Investment Feasibility Study completion","To be determined after the Pre-Investment Feasibility Study completion"]
["Note. As at 31 December 2019. Timelines for commissioning and ramp-up may be adjusted subject to the energy market environment."]
[]
["Back to Contents"]

{"sheet":"Gas to end consumers","index":32,"n_rows":19,"n_cols":11,"rows_kept":19,"cut":false,"hidden":false,"merged":[[1,0,2,0],[1,1,1,10],[16,0,16,10],[0,0,0,8]]}
["Gazprom Group subsidiaries’ gas sales volumes to end-consumers in far abroad countries, mmcm"]
["Country","For the year ended 31 December"]
[null,2010,2011,2012,2013,2014,2015,2016,2017,2018,2019]
["Austria","–","–","–","–","–",303.5,872.2,869.7,733.3,771.8]
["Belgium","–","–","–","–","–",620.70000000000005,1530.7,1881.3,1736.4,"1 168,5"]
["United Kingdom",1633.6,1959.6,2437,2682.7,2734.7,3028,3825.6,4610.7,4917.2,"4 935,3"]
["Hungary","–","–","–","–","–",104.8,197.4,296.2,330.1,349.3]
["Germany","–","–","–","–","–",3665.7,13163.4,14892.5,14012.4,"9 992,6"]
["Ireland",590.79999999999995,600.9,551.4,350.2,158,187.4,59.8,96.2,316.39999999999998,109.2]
["North Macedonia",null,"–","–","–",88.5,93,139.5,"–","–","–"]
["The Netherlands","–","–",18.8,31.5,29.4,1335.5,3220.8,2075,2991.5,2578.3000000000002]
["Romania","–","–","–","–","–",22.8,169.7,221.5,70.8,41.8]
["Slovakia","–",31,40,72.599999999999994,"–","–",6.5,173.8,242,246.8]
["France",874,492.7,457.7,384.3,510.1,780.9,947.9,1014.3,1083,"1 621,9"]
["Czech Republic",409,398,526,390.7,"–",233.9,809.1,1755.3,1961.5,"1 123,3"]
["Total",3507.4,3482.2,4030.9,3912,3520.7,10376.200000000001,24942.6,27886.5,28394.6,22938.799999999999]
["Note. Gazprom Germania GmbH and its subsidiaries' figures. Data for 2017–2018 amended due to the reclassification of individual counterparties and the corresponding sales volumes."]
[]
["Back to Contents"]

{"sheet":"Gas distribution","index":33,"n_rows":45,"n_cols":12,"rows_kept":45,"cut":false,"hidden":false,"merged":[[0,0,0,6],[18,0,18,6],[42,0,42,10],[19,0,20,0],[19,1,19,10],[1,0,2,0],[16,0,16,6],[1,1,1,10],[15,0,15,10]]}
["Gas distribution and gasification in Russia"]
[null,"For the year ended and as at 31 December"]
[null,2010,2011,2012,2013,2014,2015,2016,2017,2018,2019]
["Lenth of external gas pipelines, operated by Gazprom Group’s subsidiaries and associated gas distribution companies (GDCs), thousand km",632.70000000000005,668.6,689.5,716.1,734,746.3,760.1,773.4,786.7,802.8]
["Natural gas transportation through gas distribution systems,\noperated by Gazprom Group’s subsidiaries and associated GDCs, bcm ",225,226.2,253.4,248.7,246.7,231.3,208,239,239.7,232.6]
["Consumers of Gazprom Group’s subsidiaries and associated GDCs’:"]
["Apartments and private households, mm units",23.9,25.7,26,26.7,27,26.8,27,28.5,27.7,28]
["Industrial sites, thousand units",19.7,22.3,21.8,22.6,31.5,32.799999999999997,32.9,31.6,32.4,32.799999999999997]
["Agricultural facilities, thousand units",4.0999999999999996,4.4000000000000004,4.7,5.2,6.5,6.9,7.2,7.6,32.200000000000003,9.1]
["Boiler-houses*, thousand units",41.4,44.1,44.3,44.5,"x","x","x","x","x","x"]
["Utilities, thousand units",218.2,230,241.9,255.1,286.89999999999998,303.60000000000002,312.3,326.10000000000002,332.6,344]
["Volume of Gazprom’s gasification programs financing, \nRUB bn ",25.6,29.1,33.799999999999997,33.9,28.8,27.6,25,29.45,36.700000000000003,34.299999999999997]
["Level of natural gas gasification**, including:",0.629,0.63100000000000001,0.64400000000000002,0.65300000000000002,0.65400000000000003,0.66200000000000003,0.67200000000000004,0.68100000000000005,0.68600000000000005,0.70099999999999996]
["towns and urban-type settlements",0.69799999999999995,0.69899999999999995,0.70099999999999996,0.70899999999999996,0.70299999999999996,0.70399999999999996,0.70899999999999996,0.71399999999999997,0.71899999999999997,0.73]
["country side",0.45800000000000002,0.46700000000000003,0.53100000000000003,0.54,0.54600000000000004,0.56100000000000005,0.57099999999999995,0.58699999999999997,0.59399999999999997,0.61799999999999999]
["* Due to amendment of methodology, since 2014 boiler-houses are included in Industrial facilities or Utilities facilities, depending on nature of business of company \nto service boiler-house."]
["* Calculation performed based on residential properties as at 2005."]
[]
["Gazprom Group’s gas distribution operations abroad"]
[null,"For the year ended and as at 31 December"]
[null,null,null,null,2013,2014,2015,2016,2017,2018,2019]
["Armenia"]
["Length of gas distribution pipelines maintained, km",null,null,null,14069,14135,14330,14701,15063,18245,18808]
["Gas transported through gas distribution networks, mmcm",null,null,null,1883.8,2055.5,1861.7,1888.1,1985.2,2187,2233.1]
["Gas consumers, including:"]
["Apartments and private households, thousand units",null,null,null,648,659,669,678,689,702,714]
["Industrial facilities, units",null,null,null,1667,1766,1819,1873,1933,1991,2070]
["Agricultural facilities, units",null,null,null,387,448,476,508,566,654,800]
["Utility facilities, units",null,null,null,11450,11931,12502,12254,13044,13522,14320]
["Kyrgyzstan"]
["Length of gas distribution pipelines maintained, km",null,null,null,"x",2826,2861,2896,3093,3632,"3 717"]
["Gas transported through gas distribution networks, mmcm",null,null,null,"x",239.3,261.10000000000002,262.7,282.5,312.39999999999998,314.39999999999998]
["Gas consumers, including:"]
["Apartments and private households, thousand units",null,null,null,"x",289,292,296,303,317,343]
["Industrial facilities, units",null,null,null,"x",155,159,200,203,203,203]
["Utility facilities, units",null,null,null,"x",2636,2729,2890,2992,3189,"3 400"]
["Romania*"]
["Length of gas distribution pipelines maintained, km",null,null,null,"x","x",256,284,296,313,"x",296]
["Gas transported through gas distribution networks, mmcm",null,null,null,"x","x",61.5,63,71.5,73,"x",71.5]
["Gas consumers, including:"]
["Apartments and private households, thousand units",null,null,null,"x","x",33,37,41,44,"x",41]
["Industrial facilities, units",null,null,null,"x","x",1383,1457,1590,1685,"x",1590]
["* In 2019, the Group exited from a subsidiary focused on gas distribution in Romania."]
[]
["Back to Contents"]

{"sheet":"Sales of products","index":34,"n_rows":87,"n_cols":11,"rows_kept":87,"cut":false,"hidden":false,"merged":[[55,1,55,10],[64,0,65,0],[64,1,64,10],[55,0,56,0],[63,0,63,6],[61,0,61,10],[77,0,77,10],[84,0,84,10],[80,0,81,0],[80,1,80,10],[79,0,79,6],[0,0,0,6],[1,0,1,6],[23,0,23,6],[32,0,32,6],[54,0,54,6],[52,0,52,10],[51,0,51,10],[3,0,4,0],[3,1,3,10],[34,1,34,10],[21,0,21,10],[34,0,35,0],[24,1,24,10],[24,0,25,0],[20,0,20,10],[30,0,30,10]]}
["Sales of Crude Oil, Gas Condensate and Refined Products"]
["Oil and gas condensate sales revenue "]
["(net of VAT and custom duties)"]
[null,"For the year ended 31 December"]
[null,"2010*","2011*",2012,2013,2014,2015,2016,2017,2018,2019]
["RUB mm"]
["Russia",23148,41442,40726,32094,51603,77519,81302,71434,64645,62173]
["Far abroad",146959,157645,204648,128007,141618,155509,307128,438754,631560,648752]
["FSU countries",25967,36345,30186,50115,16013,27580,23528,29770,38748,41865]
["Total",196074,235432,275560,210216,209234,260608,411958,539958,734953,752790]
["USD mm**"]
["Russia",762,1410,1310,1006,1337,1264,1217,1225,1028,962]
["Far abroad",4837,5364,6585,4013,3669,2536,4596,7525,10041,10036]
["FSU countries",855,1237,971,1571,415,450,352,511,616,648]
["Total",6454,8011,8866,6590,5421,4250,6165,9261,11685,11646]
["EUR mm**"]
["Russia",576,1013,1020,757,1012,1140,1099,1082,872,859]
["Far abroad",3655,3854,5126,3020,2777,2287,4151,6646,8522,8967]
["FSU countries",646,889,756,1182,314,406,318,451,523,579]
["Total",4877,5756,6902,4959,4103,3833,5568,8179,9917,10405]
["* Figures for 2010-2011 were not restated according to IFRS 11 “Joint operations”."]
["** Data is not derived from IFRS consolidated financial statements. Calculation based on the the average currency exchange rate for the respective period."]
[]
["Gazprom Group’s oil and gas condensate sales volumes, mm tonnes"]
[null,"For the year ended 31 December"]
[null,2010,2011,2012,2013,2014,2015,2016,2017,2018,2019]
["Russia",3.26,4.09,3.49,2.62,4.71,5.35,5.92,4.26,2.66,2.62]
["Far abroad",16.329999999999998,13.53,14.77,9.2100000000000009,9.77,9.76,17.059999999999999,21.62,21.15,22.94]
["FSU countries",3.02,2.99,2.5299999999999998,4.12,1.17,1.88,1.69,1.71,1.74,1.71]
["Total",22.61,20.61,20.79,15.95,15.65,16.989999999999998,24.67,27.59,25.55,27.27]
["Note. Excluding intragroup sales."]
[]
["Refined products sales revenue "]
["(net of VAT, excise tax, and customs duties)"]
[null,"For the year ended 31 December"]
[null,"2010*","2011*",2012,2013,2014,2015,2016,2017,2018,2019]
["RUB mm"]
["Russia",412208,588250,742473,821487,953136,981792,980352,1115125,1394137,1355139]
["Far abroad",260812,336146,393475,449669,586204,468464,428327,454330,640977,629731]
["FSU countries",36042,48630,73267,80557,79874,105335,88883,117635,144658,126311]
["Total",709062,973026,1209215,1351713,1619214,1555591,1497562,1687090,2179772,2111181]
["USD mm**"]
["Russia",13568,20015,23889,25752,24693,16011,14669,19124,22164,20964]
["Far abroad",8585,11437,12660,14096,15187,7640,6409,7792,10190,9742]
["FSU countries",1186,1655,2357,2525,2069,1718,1330,2017,2300,1954]
["Total",23339,33107,38906,42373,41949,25369,22408,28933,34654,32660]
["EUR mm**"]
["Russia",10251,14383,18599,19379,18693,14440,13250,16891,18812,18730]
["Far abroad",6486,8219,9857,10608,11496,6890,5789,6882,8649,8704]
["FSU countries",896,1189,1835,1900,1566,1549,1201,1782,1952,1746]
["Total",17633,23791,30291,31887,31755,22879,20240,25555,29413,29180]
["* Figures for 2010-2011 were not restated according to IFRS 11 “Joint operations”."]
["** Data is not derived from IFRS consolidated financial statements. Calculation based on the the average currency exchange rate for the respective period."]
[]
["Gazprom Group’s refined products sales volumes, mm tonnes"]
[null,"For the year ended 31 December"]
[null,2010,2011,2012,2013,2014,2015,2016,2017,2018,2019]
["Russia",28.72,32.71,36.1,38.409999999999997,41.55,41.28,41.11,40.83,43.18,43.12]
["Far abroad",19.7,18.579999999999998,22.58,25.21,29.84,23.84,22.6,20.85,21.31,23.51]
["FSU countries",3.78,4.4400000000000004,5.17,4.6399999999999997,3.97,4.3,4.24,4.28,4.37,3.55]
["Total",52.2,55.73,63.85,68.260000000000005,75.36,69.42,67.95,65.959999999999994,68.86,70.180000000000007]
["Note. Excluding intragroup sales."]
[]
["Gazprom Group’s sales volumes of refined products and petrochemical products, mm tonnes"]
[null,"For the year ended 31 December"]
[null,2010,2011,2012,2013,2014,2015,2016,2017,2018,2019]
["Motor gasoline",9.81,12.72,12.51,12.69,13.45,13.65,14.92,13.39,13.64,13.53]
["Diesel fue",13.19,13.9,15.46,18.28,17.309999999999999,15.49,15.85,15.89,17.2,17.36]
["Jet fuel",2.77,3,3.3,3.76,3.96,3.76,3.51,3.6,3.94,3.98]
["Heating oil",9.4700000000000006,10.67,9.5399999999999991,10.27,11.17,8.58,7.62,5.78,6.46,7]
["Oils",0.4,0.44,0.38,0.48,0.39,0.43,0.44,0.41,0.48,0.48]
["Liquefied hydrocarbon gases",3.16,3.17,3.49,3.66,5.44,4.8499999999999996,4.49,3.7,4.0999999999999996,4.25]
["Sulfur",6.44,5.49,5.71,5,5.54,5.19,5.46,5.31,5.24,6.46]
["Mineral fertilizers","–","–",0.43,0.46,0.7,0.69,0.95,0.89,0.86,0.81]
["Polymers","–","–",0.14000000000000001,0.13,0.17,0.16,0.14000000000000001,0.11,0.11,0.1]
["Other refined and petrochemical products",6.96,6.34,12.89,13.53,17.23,16.62,14.57,16.88,16.829999999999998,16.21]
["Total",52.199999999999996,55.730000000000004,63.85,68.260000000000005,75.36,69.42,67.95,65.959999999999994,68.86,70.180000000000007]
["Note. Excluding helium sales and intragroup sales."]
[]
["Gazprom Group’s helium sales volumes"]
[null,"For the year ended 31 December"]
[null,2010,2011,2012,2013,2014,2015,2016,2017,2018,2019]
["Helium gaseous, mmcm",4.8600000000000003,3.51,2.74,3.01,2.74,3.04,3.18,3.32,3.42,3.63]
["Helium liquefied, tonnes","–","–",391.6,94,139.96,314.14999999999998,299.32,289.56,260.08,214.56]
["Note. Excluding intragroup sales."]
[]
["Back to Contents"]

{"sheet":"Sales of energy","index":35,"n_rows":24,"n_cols":10,"rows_kept":24,"cut":false,"hidden":false,"merged":[[21,0,21,10],[20,0,20,9],[3,1,3,10],[0,0,0,6],[1,0,1,6]]}
["Sales of Electricity, Heat Energy and Gas Transportation Services"]
["Electricity and heat energy sales revenue"]
["(net of VAT)"]
[null,"For the year ended 31 December"]
[null,"2011*",2012,2013,2014,2015,2016,2017,2018,2019]
["RUB mm"]
["Russia",333204,326737,362415,409087,403084,461908,487283,501362,495581]
["Far abroad",7878,11186,10983,15383,19057,17350,13599,15643,19447]
["FSU countries",3469,5586,2191,2481,2524,2458,2937,5090,3345]
["Total",344551,343509,375589,426951,424665,481716,503819,522095,518373]
["USD mm**"]
["Russia",11337,10513,11361,10598,6573,6912,8357,7971,7667]
["Far abroad",268,360,344,399,311,260,233,249,301]
["FSU countries",118,180,69,64,41,37,50,81,52]
["Total",11723,11053,11774,11061,6925,7209,8640,8301,"8 020"]
["EUR mm**"]
["Russia",8147,8185,8550,8023,5929,6243,7381,6765,6850]
["Far abroad",193,280,259,302,280,234,206,211,269]
["FSU countries",85,140,52,49,37,33,44,69,46]
["Total",8425,8605,8861,8374,6246,6510,7631,7045,7165]
["* Figures for 2011 were not restated according to IFRS 11 “Joint operations”."]
["** Data is not derived from IFRS consolidated financial statements. Calculation based on the the average currency exchange rate \nfor the respective period."]
[]
["Back to Contents"]

{"sheet":"Sales of transp. services","index":36,"n_rows":17,"n_cols":11,"rows_kept":17,"cut":false,"hidden":false,"merged":[[2,1,2,10],[11,1,11,10],[8,0,8,10],[7,0,7,10],[0,0,0,6],[10,0,10,6]]}
["Gas transportation sales revenue "]
["(net of VAT)"]
[null,"For the year ended 31 December"]
[null,"2010*","2011*",2012,2013,2014,2015,2016,2017,2018,2019]
["RUB mm",92631,112995,125386,163265,172842,193965,198971,235061,225673,215335]
["USD mm**",3051,3845,4034,5118,4478,3163,2977,4031,3588,3331]
["EUR mm**",2300,2763,3141,3851,3390,2853,2689,3560,3045,2976]
["* Figures were not restated according to IFRS 11 “Joint operations”."]
["** Data is not derived from IFRS consolidated financial statements. Calculation based on the the average currency exchange rate for the respective period."]
[]
["Sales volumes of gas transportation services to companies other than Gazprom Group’s companies, bcm"]
[null,"For the year ended 31 December"]
[null,2010,2011,2012,2013,2014,2015,2016,2017,2018,2019]
["Total",72.599999999999994,81.5,95.8,111.4,121.1,121.5,129,137.9,136.4,132.1]
["Including Russian gas",64.5,72.8,86.9,104.3,113.7,113.9,121.3,130.4,128.30000000000001,124.3]
[]
["Back to Contents"]

{"sheet":"Environmental Protection","index":37,"n_rows":42,"n_cols":13,"rows_kept":42,"cut":false,"hidden":false,"merged":[[27,1,27,12],[39,0,39,12],[0,0,0,8],[1,0,1,8],[2,1,2,12],[16,0,16,8],[17,1,17,12],[26,0,26,8]]}
["Environmental Protection and Energy Saving"]
["Gazprom Group’s environmental performance in Russia"]
[null,"For the year ended 31 December"]
[null,2008,2009,2010,2011,2012,2013,2014,2015,2016,2017,2018,2019]
["Air pollutant emissions, thousand tonnes",3340.7,3391.1,3225.3,3124.2,3410.9,3076.4,2797.6,2830.6,2868.5,"2 795, 9",2894,2862.7]
["including:  carbon oxide",785.5,645.79999999999995,666.8,687.2,1031.9000000000001,653.4,547,533.6,550.5,529.9,594.1,596.4]
["nitrogen oxide",339.4,335.3,377.4,372.6,378.3,352.9,313.10000000000002,286.3,288.5,313.60000000000002,328.6,307.7]
["sulfur dioxide",248.6,249.1,296.10000000000002,260.89999999999998,310,296.89999999999998,289.3,328.4,346.1,262.7,276.2,221.5]
["hydrocarbons (including methane)",1712.4,1859.8,1589.1,1491.1,1606.6,1534,1398.5,1430.8,1462.3,1495.7,1497.8,1542.6]
["Greenhouse gases emission, \nmm tonnes CO2-equivalent","х",235.7,253.22,244.7,232.5,229.1,228.3,220,228.2,233.8,240,236.5]
["Waste water discharge \ninto surface water bodies, mmcm",3895.1,5175.8999999999996,5364.1,5257.7,4893,"4 389,9","4 179,1",3853.8,3855.5,"3 905,3",3658.4,3241.8]
["including: clean and treated as per standards",3853.1,5031.3,5348.9,5096.2,4691.6000000000004,4227.8999999999996,3991.6,3660.6,3691.2,3781.7,3579.5,3152.7]
["Waste generation, thousand tonnes",4084.5,5210.8,5600.3,"4 973,8",5226.6000000000004,4693.7,4831.3999999999996,4954,4289.8,"4 130,3",3555.1,3337.1]
["Area of land disturbed during the year, \nthousand ha",13,6.8,15.4,2.2999999999999998,14.4,13.1,15.4,58.1,27,42.2,25.8,22.9]
["Area of land rehabilitated during the year, \nthousand ha",8.3000000000000007,12.6,9.8000000000000007,11.6,9.6999999999999993,14,12.6,18.2,42.5,19.600000000000001,15.8,17.7]
[]
["Gazprom Group’s environmental protection costs in Russia, RUB mm"]
[null,"For the year ended 31 December"]
[null,2008,2009,2010,2011,2012,2013,2014,2015,2016,2017,2018,2019]
["Current operating costs",17162.3,10376.5,10289.799999999999,11232.7,18354.7,20328.099999999999,18047.900000000001,16399.900000000001,17189.7,18219.8,22638,14964.6]
["Fees for environmental protection services","x","x","x","x",3849.5,8021.9,9403.5,12806.3,14725.6,14495.6,14584.1,15601.9]
["Overhaul costs for fixed capital assets used in environmental protection",1428.8,962.7,1243.2,2571.8000000000002,2444.6,3106.5,4204.8999999999996,2962.9,2187.9,1752.6,1932.2,1613.7]
["Negative environmental impact charges",2678.8,1218.4000000000001,1234.4000000000001,1017.2,1563.1,2952.5,1746.9,1790.4,824.8,768,615.79999999999995,617.70000000000005]
["Capital expenditures for environmental protection and sustainable use of natural resources",3493.7,6323.6,7744.4,9785.7000000000007,12885.8,24947.9,15578.3,15754.3,22541.9,35584.5,29188.6,20421.3]
["Total",24763.599999999999,18881.2,20511.8,24607.4,39097.699999999997,59356.9,48981.5,49713.8,57469.9,70820.5,68958.7,53219.199999999997]
[]
["Energy saving of PJSC Gazprom and its major subsidiaries"]
[null,"For the year ended 31 December"]
[null,2008,2009,2010,2011,2012,2013,2014,2015,2016,2017,2018,2019]
["Natural gas"]
["mmcm",2357.4,2179.3000000000002,2307.6999999999998,2390.1999999999998,1807,1922.3,2070.6999999999998,2255.3000000000002,2285,3013.5,2951.9,"3 286,9"]
["thousand t c.e.",2687.5,2484.4,2630.8,2724.8,2060,2191.4,2360.6,2571,2641.1,3480.6,3409.5,"3 796,4"]
["Electric power"]
["million kWh ",250.8,171.6,181.6,194.1,255.4,293.39999999999998,254.6,260.60000000000002,256,331.4,364.3,330.5]
["thousand t c.e. ",81.5,55.8,59,63.1,83,95.4,82.8,84.7,84.5,107.7,118.4,107.4]
["Heat power"]
["thousand Gcal ",204.3,180.4,200.2,102.9,241.8,217.9,237.2,205,254.2,268.39999999999998,235.9,252.7]
["thousand t c.e. ",29.3,25.8,28.6,14.7,34.5,31.1,33.9,29.3,36.4,38.4,33.700000000000003,36.1]
["Total, thousand t c.e.",2798.3,2566.0000000000005,2718.4,2802.6,2177.5,2317.9,2477.3000000000002,2685,2762,3626.7,3561.6,"3 939,9"]
["Note. FER consumption rates have been converted to t c.e. using the following ratios: 1 mcm of gas = 1.155 t c.e. (2015 and earlier: 1 mcm of gas = 1.14 t c.e.); \n1 thousand kWh = 0.325 t c.e.; 1 thousand Gcal = 0.143 t c.e."]
[]
["Back to Contents"]

{"sheet":"Occupational safety","index":38,"n_rows":37,"n_cols":6,"rows_kept":37,"cut":false,"hidden":false,"merged":[[34,0,34,5],[2,1,2,5],[11,0,11,5],[14,1,14,5],[0,0,0,3],[1,0,1,3],[13,0,13,3]]}
["Occupational Safety"]
["Occupational safety at Gazprom Group entities covered by the UOHSMS*"]
[null,"For the year ended 31 December"]
[null,2015,2016,2017,2018,2019]
["Industrial safety incidents at hazardous production facilities",52,31,26,16,10]
["Fires at facilities",5,4,4,3,2]
["Accidents",76,65,49,63,37]
["Number of injuries resulting from accidents",102,77,61,89,47]
["Number of fatalities resulting from accidents",7,4,6,3,7]
["Lost time injury frequency rate (LTIFR)*",0.18,0.16,0.11,0.17,0.09]
["Fatal accident rate (FAR)*",1.42,0.79,1.17,0.56999999999999995,1.35]
["* For the definitions, see Glossary."]
[]
["Occupational safety at Gazprom Group entities outside the UOHSMS"]
[null,"For the year ended 31 December"]
[null,2015,2016,2017,2018,2019]
["Gazprom neftekhim Salavat"]
["Industrial safety incidents at hazardous production facilities",4,3,1,9,2]
["Accidents",2,1,2,"–",2]
["Number of injuries resulting from accidents",2,1,2,"–",2]
["Lost time injury frequency rate (LTIFR)*",0.15,7.0000000000000007E-2,0.14000000000000001,"–",0.13]
["Fatal accident rate (FAR)*","–","–",6.97,"–","–"]
["Gazprom Neft"]
["Industrial safety incidents at hazardous production facilities",2513,2387,2183,1068,915]
["Accidents",39,36,36,29,33]
["Number of injuries resulting from accidents",43,38,36,29,34]
["Lost time injury frequency rate (LTIFR)*",0.47,0.4,0.33,0.26,0.26]
["Fatal accident rate (FAR)*",2.2000000000000002,2.9,0.92,0.89,1.56]
["Gazprom energoholding"]
["Industrial safety incidents at hazardous production facilities",196,177,129,99,69]
["Accidents",12,19,16,18,8]
["Number of injuries resulting from accidents",13,19,16,18,8]
["Lost time injury frequency rate (LTIFR)*",0.2,0.3,0.25,0.28000000000000003,0.12]
["Fatal accident rate (FAR)*","–",1.56,1.57,"–","–"]
["* For the definitions, see Glossary."]
[]
["Back to Contents"]

{"sheet":"R&D","index":39,"n_rows":14,"n_cols":13,"rows_kept":14,"cut":false,"hidden":false,"merged":[[0,0,0,8],[2,1,2,12],[8,0,8,8],[9,1,9,12],[1,0,1,8]]}
["Patent management, R&D"]
["Number of patents held by PJSC Gazprom and its subsidiaries and their use in operations"]
[null,"For the year ended and as at 31 December"]
[null,null,null,null,null,null,2013,2014,2015,2016,2017,2018,2019]
["Total number of patents held by PJSC Gazprom and \nits subsidiaries, units",null,null,null,null,null,2035,2131,2238,2269,2342,2555,2674]
["including those used in operations",null,null,null,null,null,350,351,356,406,427,441,459]
["Economic effect from the use of patented items \nin operations, RUB bn",null,null,null,null,null,1.8,3.1,6.1,7.1,7.9,10.3,14.5]
[]
["Total spending on R&D projects commissioned by Gazprom Group, RUB bn"]
[null,"For the year ended 31 December"]
[null,2008,2009,2010,2011,2012,2013,2014,2015,2016,2017,2018,2019]
["Total spending on R&D projects commissioned by Gazprom Group (net of VAT) ",4.9000000000000004,7.4,7,7.9,7.7,6.8,10.8,9.9,6.3,8.1999999999999993,9,12.1]
[]
["Back to Contents"]

{"sheet":"Personnel","index":40,"n_rows":25,"n_cols":13,"rows_kept":25,"cut":false,"hidden":false,"merged":[[0,0,0,8],[1,0,1,8],[2,0,3,0],[2,1,2,12],[21,0,21,8]]}
["Personnel"]
["Gazprom Group’s personnel structure"]
[null,"As at 31 December"]
[null,2008,2009,2010,2011,2012,2013,2014,2015,2016,2017,2018,2019]
["Number of employees of the Group, \nin thousand:"]
["PJSC Gazprom",10.1,17.3,20.7,22.1,23.3,24.1,24.3,24.8,25.6,26.2,26.7,27.1]
["Gas production, transportation, processing and storage subsidiaries*",221.3,216.8,217.1,219.3,222.5,228.6,233.3,235.4,237.4,235.6,232.9,234.9]
["Gazprom Neft",48.2,65.2,62.5,57.6,58.6,62.8,66.400000000000006,65,71.400000000000006,67.599999999999994,68.5,72.7]
["Gazprom energoholding",24.8,31.5,25.9,27.7,26.5,50.8,45.5,45,44.9,44.2,43.3,45.7]
["Gazprom neftekhim Salavat","x","x","x","x",15.6,16.2,15.7,15.5,15.4,16.3,15.2,14.7]
["Other subsidiaries",71.900000000000006,62.8,74.400000000000006,77.7,84.7,77,74.400000000000006,76.7,72.7,79.7,79.5,78.7]
["Total",{"$f":"SUM(B6:B11)","v":376.30000000000007},{"$f":"SUM(C6:C11)","v":393.6},{"$f":"SUM(D6:D11)","v":400.59999999999991},{"$f":"SUM(E6:E11)","v":404.4},431.2,459.5,459.6,462.4,467.4,469.6,466.1,473.8]
["by categories:"]
["management ",0.11600000000000001,0.123,0.122,0.128,0.13,0.13400000000000001,0.13700000000000001,0.13700000000000001,0.13900000000000001,0.13900000000000001,0.14199999999999999,0.14399999999999999]
["specialists and other employees",0.26600000000000001,0.26100000000000001,0.28399999999999997,0.29599999999999999,0.30099999999999999,0.308,0.309,0.315,0.316,0.315,0.32400000000000001,0.33]
["workers",0.61799999999999999,0.61599999999999999,0.59399999999999997,0.57599999999999996,0.56899999999999995,0.55800000000000005,0.55400000000000005,0.54800000000000004,0.54500000000000004,0.54600000000000004,0.53400000000000003,0.52600000000000002]
["by age: "]
["under 30 years ",0.16700000000000001,0.187,0.183,0.187,0.192,0.19,0.185,0.17899999999999999,0.16900000000000001,0.153,0.14399999999999999,0.13400000000000001]
["30-40 years ",0.27100000000000002,0.26600000000000001,0.27300000000000002,0.27400000000000002,0.27800000000000002,0.28299999999999997,0.28999999999999998,0.29699999999999999,0.30499999999999999,0.313,0.32,0.32300000000000001]
["40-50 years ",0.32800000000000001,0.30599999999999999,0.29799999999999999,0.28999999999999998,0.27800000000000002,0.27,0.27,0.27200000000000002,0.27800000000000002,0.28599999999999998,0.29399999999999998,0.29799999999999999]
["50 years and over",0.23400000000000001,0.24099999999999999,0.246,0.249,0.252,0.25700000000000001,0.255,0.252,0.248,"24,8 %",0.24199999999999999,0.245]
["* For the list of companies, see Glossary."]
["Note. Excluding companies where Gazprom has investments classified as joint operations."]
[]
["Back to Contents"]

{"sheet":"Conventions","index":41,"n_rows":16,"n_cols":2,"rows_kept":16,"cut":false,"hidden":false,"merged":[[0,0,0,1],[1,0,1,1],[8,0,8,1]]}
["Reference information"]
["Conventions"]
["Sign","Meaning"]
["х","Data cannot be given"]
["–","Phenomenion is absent"]
[0,"Less than 0.05"]
[0,"Less than 0.005"]
[]
["Conversion Table"]
["Measure","Correspondence"]
["1 mcm of natural gas","6.49 boe"]
["1 tonne of oil","7.33 boe"]
["1 tonne of gas condensate","8.18 boe"]
["1 million BTUs","0.028 mcm of gas\n0.021 tonnes of LNG"]
[]
["Back to Contents"]

{"sheet":"Glossary","index":42,"n_rows":96,"n_cols":3,"rows_kept":96,"cut":false,"hidden":false,"merged":[[51,1,78,1]]}
[null,"Glossary"]
[null,"Terms and abbreviations","Description"]
[null,"ADR of PJSC Gazprom","American depository receipt representing Gazprom’s shares. "]
[null,"APG","Associated petroleum gas"]
[null,"Asia Pacific","The Asia-Pacific region, which includes countries of mainland Asia, America and Pacific Ocean Area"]
[null,"bcm","Billion cubic meters"]
[null,"boe","Barrel of oil equivalent"]
[null,"Brent","Benchmark grade of crude oil produced in the North Sea"]
[null,"BTU","British thermal unit"]
[null,"Central Asia","Kazakhstan, Kyrgyzstan, Tajikistan, Turkmenistan and Uzbekistan"]
[null,"CGTU","Comprehensive gas treatment unit"]
[null,"CHPP","Combined heat and power plant"]
[null,"CNG","Compressed natural gas"]
[null,"CS","Compressor station"]
[null,"cu m","Cubic metre"]
[null,"cu m of gas","A cubic metre of natural gas measured at 1 Pa pressure and 20°C, with a calorific value of 8,850 kcal per cu m"]
[null,"Daily average production","Indicator value is calculated based on the number of calendar days in a year"]
[null,"DOP plasticizer ","Dioctyl phthalate plasticizer"]
[null,"EBITDA (adjusted)","The sum of operating profit, depreciation, impairment loss or reversal of impairment loss on financial assets and non-financial assets, less changes of allowance for expected credit losses on accounts receivable and impairment allowance on advances paid and prepayments"]
[null,"EV","Enterprise value"]
[null,"EUR","Euro"]
[null,"European far abroad countries","25 EU countries (excluding Latvia, Lithuania, and Estonia), such non-EU countries as Turkey, Norway, and Switzerland, and the Balkan states of Albania, Bosnia and Herzegovina, North Macedonia, and Serbia"]
[null,"Far abroad","Foreign countries, excluding FSU Countries, which together refer in IFRS financial statements as “Europe and other countries” geographical segment"]
[null,"FD","Federal District"]
[null,"FEED","Front-end and engineering and design"]
[null,"FSU Countries","Republics of the former USSR, except for the Russian Federation, which together refer in IFRS financial statements as “Former Soviet Union countries (excluding the Russian Federation)” geographical segment."]
[null,"Gasification","Construction of low-pressure gas pipelines to ensure gas supply to the ultimate consumers"]
[null,"Gazprom Group, Group, Gazprom","PJSC Gazprom (head company) and its subsidiaries taken as a whole"]
[null,"Gazprom Group hydrocarbons production","Production volume of hydrocarbons, defined as the sum of the volume of produced hydrocarbons intended for sale, as well as the volume of produced hydrocarbons spent on own needs"]
[null,"Gazprom Group sales volumes of hydrocarbons and refined/processed products","Volumes of gas, oil, gas condensate and products of their processing/refining, both from own production and purchased from third-party companies, sold to consumers, excluding intra-group sales"]
[null,"Gcal","Gigacalorie"]
[null,"GCLD","Light distillate of gas condensate"]
[null,"GCC","Gas chemical complex"]
[null,"GDC","Gas distribution company"]
[null,"GHG","Greenhouse gases"]
[null,"GPP","Gas processing plant"]
[null,"GPU","Gas pumping unit"]
[null,"GRES","State district power station"]
[null,"GTS","Gas transportation system"]
[null,"HEPP","Hydroelectric power plant"]
[null,"Hydrocarbon reserves (categories A+B1+C1)","Explored reserves under Russian classification of reserves with a high degree of geological exploration, which correspond to the previously accepted categories A+B+C1 (for oil, gas and gas condensate reserves there is a recovery factor calculated on the basis of geological and technological factors)"]
[null,"IFRS","International Financial Reporting Standards"]
[null,"kWh","Kilowatt-hour"]
[null,"LNG","Liquefied natural gas"]
[null,"LPG","Liquefied petroleum gas"]
[null,"LSE","London Stock Exchange"]
[null,"LTIFR","Lost-time injury frequency rate. Calculation: Lost time injuries/total hours worked by all employees × 1,000,000"]
[null,"mcm","Thousand cubic meters"]
[null,"mmcm","Million cubic meters"]
[null,"MW","Megawatt"]
[null,"NGL","Natural gas liquids"]
[null,"PJSC Gazprom\nand its major subsidiaries ","PJSC Gazprom and its gas production, transportation, refining and storage subsidiaries:"]
[null,null,"OOO Gazprom dobycha Yamburg"]
[null,null,"OOO Gazprom dobycha Urengoy"]
[null,null,"OOO Gazprom dobycha Nadym"]
[null,null,"OOO Gazprom dobycha Noyabrsk"]
[null,null,"OOO Gazprom dobycha Orenburg"]
[null,null,"OOO Gazprom dobycha Astrakhan"]
[null,null,"OOO Gazprom pererabotka"]
[null,null,"OOO Gazprom dobycha Krasnodar"]
[null,null,"OOO Gazprom transgaz Uhta"]
[null,null,"OOO Gazprom transgaz Surgut"]
[null,null,"OOO Gazprom transgaz Yugorsk"]
[null,null,"OOO Gazprom transgaz Sankt-Peterburg"]
[null,null,"OOO Gazprom transgaz Moskva"]
[null,null,"OOO Gazprom transgaz Tomsk"]
[null,null,"OOO Gazprom transgaz Chajkovskij"]
[null,null,"OOO Gazprom transgaz Yekaterinburg"]
[null,null,"OOO Gazprom transgaz Stavropol"]
[null,null,"OOO Gazprom transgaz Makhachkala"]
[null,null,"OOO Gazprom transgaz Nizhny Novgorod"]
[null,null,"OOO Gazprom transgaz Saratov"]
[null,null,"OOO Gazprom transgaz Volgograd"]
[null,null,"OOO Gazprom transgaz Samara"]
[null,null,"OOO Gazprom transgaz Ufa"]
[null,null,"OOO Gazprom transgaz Kazan"]
[null,null,"OOO Gazprom transgaz Krasnodar"]
[null,null,"OAO Gazprom transgaz Belarus"]
[null,null,"OOO Gazprom PHG"]
[null,"PHF","Pentane-hexane fraction"]
[null,"PRMS","Petroleum Resources Management System, an international standard for hydrocarbon reserve classification and reporting (Petroleum Resources Management System)"]
[null,"PSA","Production sharing agreement"]
[null,"R&D","Research and Development"]
[null,"RUB","Russian roubles"]
[null,"t c.e.","Ton of coal equivalent. A unit of accounting for the thermal value of fuel used to compare different types of fuel"]
[null,"ton","Metric ton"]
[null,"TPP","Thermal power plant"]
[null,"UGSF","Underground gas storage facility"]
[null,"UGSS","Unified Gas Supply System of Russia"]
[null,"UOHSMS","Unified Occupational Health and Safety Management System"]
[null,"UOHSMS, entities covered","PJSC Gazprom, its main subsidiaries for exploration, production, processing, transportation of gas, underground gas storage and power and heat generation, as well as subsidiaries involved in operation of the UGSS"]
[null,"USD","U.S. dollars"]
[null,"VAT","Value added tax"]
[null,"WFLH","Wide fraction of light hydrocarbons"]
[]
[null,"Back to Contents"]

{"sheet":"Financial Ratios","index":43,"n_rows":22,"n_cols":2,"rows_kept":22,"cut":false,"hidden":false,"merged":[[13,0,13,1],[16,0,16,1],[0,0,0,1],[5,0,5,1],[7,0,7,1],[2,0,2,1]]}
["Calculation of Adjusted Financial Statement Measures and Financial Ratios"]
["Measure","Description"]
["Adjusted financial statement measures"]
["Profit for the year attributable to owners\nof PJSC Gazprom (adjusted)","Profit for the year attributable to the owners of PJSC Gazprom, adjusted for:\n■ foreign exchange gain (loss) included in finance income and expense\n■ foreign exchange differences on operating items\n■ impairment loss (reversal of impairment loss) on fixed assets and construction in progress\n■ impairment loss (reversal of impairment loss) on investments in associates and joint ventures\n■ the difference between the share in profits of associates and joint ventures and proceeds from associates and joint ventures"]
["Adjusted Net Debt","Net debt adjusted for deposits included in other current and non-current assets"]
["Statement of cash flows figures"]
["Seft-financing ratio","Ratio between Net cash from operating activities and Capital expenditures\n(figures from Statement of cash flows)"]
["Return ratios"]
["Return on operating profit","Ratio between Operating profit and Sales"]
["Return on adjusted EBITDA","Ratio between Adjusted EBITDA and Sales"]
["Return on profit for the year","Ratio between Profit for the year and Sales"]
["Return on assets (ROA)","Ratio between Profit for the year and the average value of Total assets as at the beginning and of the end of the respective period"]
["Return on equity (ROE)","Ratio between Profit for the year and the average value of Equity (including non-controlling interest) as at the beginning and of the end of the respective period"]
["Liquidity ratios"]
["Current liquidity ratio","Ratio between Current assets and Current liabilities"]
["Quick liquidity ratio","Ratio between Current assets less Inventories and Current liabilities"]
["Other ratios"]
["EV / EBITDA","Ratio between Enterprise value (calculated as the sum of Market capitalization and Net debt) as at the end of the period and Adjusted EBITDA for the period"]
["P / E","Ratio between Share price as at the end of the period and Earnings per share for profit attributable to the owners of PJSC Gazprom for the respective period"]
["P / S ","Ratio between Market capitalization as at the end of the period and Sales of the respective period"]
[]
["Back to Contents"]